{"text_format":"1","workbook":"xlsx","n_sheets":15,"sheets":["Cover","Checklist","Outputs","Avoidable costs","PTRM Revenue data","PTRM Data","BBM Costs","Inputs >>>","Control panel","Allocators","Opex costs","PTRM Input","Assets","X-factors","Aux"],"not_rendered":{"charts":0,"images":1,"macros":1,"external_links":2,"defined_names":428,"comments":0,"pivot_tables":0},"unopened":[],"bounds":{"document_bytes":16777216,"sheet_cells":100000,"rows_first":2000,"rows_last":500,"rows_between":2000,"halvings":0,"cell_chars":16384,"cell_head_chars":4096},"cells_cut":0,"cells_raw":0,"read":"whole","date_system":"1900"}

{"sheet":"Cover","index":0,"n_rows":8,"n_cols":2,"rows_kept":8,"cut":false,"hidden":false,"merged":[]}
[]
[]
[null,"Attachment 9.04"]
[null,"Stand alone and avoidable cost model"]
[]
[null,"2025-30 Regulatory Proposal"]
[]
[null,"2024-01-31"]

{"sheet":"Checklist","index":1,"n_rows":27,"n_cols":10,"rows_kept":27,"cut":false,"hidden":false,"merged":[]}
[]
[null,"Checklist"]
[]
[null,"Yearly update",null,null,null,null,null,"Initial set up"]
[]
[null,"Colour codes",null,"Steps",null,null,null,"Steps"]
[]
[null,"Key",null,"Step","Tab","Description",null,"Step","Tab","Description"]
[null,"Inputs",null,1,"X-factors","From PTRM copy and paste x-factor calculations",null,1,"X-factors","From PTRM copy and paste x-factor calculations"]
[null,"Parameter",null,2,"Assets","From PTRM, copy paste asset calculations",null,2,"Assets","From PTRM, copy paste asset calculations"]
[null,"Calculation ",null,3,"PTRM inputs","From PTRM inputs, copy paste inputs calculations",null,3,"PTRM inputs","From PTRM inputs, copy paste inputs calculations"]
[null,"Outputs",null,4,"Allocators","Fill in projected/actual customer numbers for each year and code",null,4,"Opex costs","Type in operational cost categories into the red boxes"]
[null,"Text",null,5,"Allocators","Fill in projected/actual energy consumed for each year and code",null,5,"Opex costs","Assign the percentage of operational costs to each category "]
[null,null,null,null,null,null,null,6,"Allocators","Type in customer code, name and voltage level"]
[null,null,null,null,null,null,null,7,"Allocators","Fill in projected customer numbers for each year and code"]
[null,null,null,null,null,null,null,8,"Allocators","Fill in projected energy consumed for each year and code"]
[null,null,null,null,null,null,null,9,"Control panel","For standalone costs, choose the proportion of scalable costs for each customer code"]
[null,null,null,null,null,null,null,10,"Control panel","For operational costs, assign the percentage allocated to avoidable costs"]
[null,null,null,null,null,null,null,11,"Control panel","For operational costs, assign the percentage allocated to the customer"]
[null,null,null,null,null,null,null,12,"Control panel","For operational costs, assign if it is a scalable or non-scalable cost"]
[null,null,null,null,null,null,null,13,"Control panel","For return of capex, assign the percentage allocated to avoidable costs"]
[null,null,null,null,null,null,null,14,"Control panel","For return of capex, assign the percentage allocated to the customer"]
[null,null,null,null,null,null,null,15,"Control panel","For return of capex, assign if it is a scalable or non-scalable cost"]
[null,null,null,null,null,null,null,16,"Control panel","For return on capex, assign the percentage allocated to avoidable costs"]
[null,null,null,null,null,null,null,17,"Control panel","For return on capex, assign the percentage allocated to the customer"]
[null,null,null,null,null,null,null,18,"Control panel","For return on capex, assign if it is a scalable or non-scalable cost"]
[null,null,null,null,null,null,null,19,"Control panel","For each operational cost and asset put a 1 or 0. This is to map similar opex to capex categories"]

{"sheet":"Outputs","index":2,"n_rows":14,"n_cols":42,"rows_kept":14,"cut":false,"hidden":false,"merged":[[5,29,5,34],[5,36,5,41],[5,8,5,13],[5,1,5,6],[3,1,3,13],[3,15,3,27],[5,15,5,20],[5,22,5,27],[3,29,3,41]]}
[]
[null,"Outputs"]
[]
[null,"Final output",null,null,null,null,null,null,null,null,null,null,null,null,null,"Standalone costs",null,null,null,null,null,null,null,null,null,null,null,null,null,"Avoidable costs"]
[]
[null,"Avoidable costs (per cent of revenue)",null,null,null,null,null,null,"Standalone costs (per cent of revenue)",null,null,null,null,null,null,"Scalable",null,null,null,null,null,null,"Non scalable",null,null,null,null,null,null,"Customer related costs",null,null,null,null,null,null,"Energy related costs"]
[]
[null,"Class","2025-26","2026-27","2027-28","2028-29","2029-30",null,"Class","2025-26","2026-27","2027-28","2028-29","2029-30",null,"Type","2025-26","2026-27","2027-28","2028-29","2029-30",null,"Type","2025-26","2026-27","2027-28","2028-29","2029-30",null,"Type","2025-26","2026-27","2027-28","2028-29","2029-30",null,"Type","2025-26","2026-27","2027-28","2028-29","2029-30"]
[null,"ICC",{"$f":"(AE$14*(_xlfn.XLOOKUP($B9,Allocators!$B$7:$B$9,Allocators!F$7:F$9)/Allocators!F$11)+AL$14*(_xlfn.XLOOKUP($B9,Allocators!$B$7:$B$9,Allocators!L$7:L$9)/Allocators!L$11))/'BBM Costs'!C$13","v":4.000650967730289E-2},{"$f":"(AF$14*(_xlfn.XLOOKUP($B9,Allocators!$B$7:$B$9,Allocators!G$7:G$9)/Allocators!G$11)+AM$14*(_xlfn.XLOOKUP($B9,Allocators!$B$7:$B$9,Allocators!M$7:M$9)/Allocators!M$11))/'BBM Costs'!D$13","v":3.9912275537965697E-2},{"$f":"(AG$14*(_xlfn.XLOOKUP($B9,Allocators!$B$7:$B$9,Allocators!H$7:H$9)/Allocators!H$11)+AN$14*(_xlfn.XLOOKUP($B9,Allocators!$B$7:$B$9,Allocators!N$7:N$9)/Allocators!N$11))/'BBM Costs'!E$13","v":3.9976726394411459E-2},{"$f":"(AH$14*(_xlfn.XLOOKUP($B9,Allocators!$B$7:$B$9,Allocators!I$7:I$9)/Allocators!I$11)+AO$14*(_xlfn.XLOOKUP($B9,Allocators!$B$7:$B$9,Allocators!O$7:O$9)/Allocators!O$11))/'BBM Costs'!F$13","v":3.8998735399403524E-2},{"$f":"(AI$14*(_xlfn.XLOOKUP($B9,Allocators!$B$7:$B$9,Allocators!J$7:J$9)/Allocators!J$11)+AP$14*(_xlfn.XLOOKUP($B9,Allocators!$B$7:$B$9,Allocators!P$7:P$9)/Allocators!P$11))/'BBM Costs'!G$13","v":3.9067182005197508E-2},null,"ICC",{"$f":"((X$14+(Q$14*_xlfn.XLOOKUP($I9,'Control panel'!$B$7:$B$9,'Control panel'!$C$7:$C$9)))/'BBM Costs'!C$13)+C9","v":0.18209594137036039},{"$f":"((Y$14+(R$14*_xlfn.XLOOKUP($I9,'Control panel'!$B$7:$B$9,'Control panel'!$C$7:$C$9)))/'BBM Costs'!D$13)+D9","v":0.1776976450065417},{"$f":"((Z$14+(S$14*_xlfn.XLOOKUP($I9,'Control panel'!$B$7:$B$9,'Control panel'!$C$7:$C$9)))/'BBM Costs'!E$13)+E9","v":0.17994462395490313},{"$f":"((AA$14+(T$14*_xlfn.XLOOKUP($I9,'Control panel'!$B$7:$B$9,'Control panel'!$C$7:$C$9)))/'BBM Costs'!F$13)+F9","v":0.20417515402649578},{"$f":"((AB$14+(U$14*_xlfn.XLOOKUP($I9,'Control panel'!$B$7:$B$9,'Control panel'!$C$7:$C$9)))/'BBM Costs'!G$13)+G9","v":0.21218098340500169},null,"Opex",{"$f":"SUMPRODUCT('BBM Costs'!J$7:J$25,'Control panel'!$G$7:$G$25,--('Control panel'!$J$7:$J$25=Outputs!$P$6))","v":310.40139698928664},{"$f":"SUMPRODUCT('BBM Costs'!K$7:K$25,'Control panel'!$G$7:$G$25,--('Control panel'!$J$7:$J$25=Outputs!$P$6))","v":322.56616427241545},{"$f":"SUMPRODUCT('BBM Costs'!L$7:L$25,'Control panel'!$G$7:$G$25,--('Control panel'!$J$7:$J$25=Outputs!$P$6))","v":334.12017325639778},{"$f":"SUMPRODUCT('BBM Costs'!M$7:M$25,'Control panel'!$G$7:$G$25,--('Control panel'!$J$7:$J$25=Outputs!$P$6))","v":339.54013310224929},{"$f":"SUMPRODUCT('BBM Costs'!N$7:N$25,'Control panel'!$G$7:$G$25,--('Control panel'!$J$7:$J$25=Outputs!$P$6))","v":352.99628895269723},null,"Opex",{"$f":"SUMPRODUCT('BBM Costs'!J$7:J$25,'Control panel'!$G$7:$G$25,--('Control panel'!$J$7:$J$25=$W$6))","v":-159.80517963099308},{"$f":"SUMPRODUCT('BBM Costs'!K$7:K$25,'Control panel'!$G$7:$G$25,--('Control panel'!$J$7:$J$25=$W$6))","v":-173.02502295525267},{"$f":"SUMPRODUCT('BBM Costs'!L$7:L$25,'Control panel'!$G$7:$G$25,--('Control panel'!$J$7:$J$25=$W$6))","v":-177.27395675652832},{"$f":"SUMPRODUCT('BBM Costs'!M$7:M$25,'Control panel'!$G$7:$G$25,--('Control panel'!$J$7:$J$25=$W$6))","v":-130.09992581533493},{"$f":"SUMPRODUCT('BBM Costs'!N$7:N$25,'Control panel'!$G$7:$G$25,--('Control panel'!$J$7:$J$25=$W$6))","v":-114.48628835841032},null,"O&M related",{"$f":"'Avoidable costs'!J29","v":52.399958968171148},{"$f":"'Avoidable costs'!K29","v":54.457754155738812},{"$f":"'Avoidable costs'!L29","v":56.411035951003328},{"$f":"'Avoidable costs'!M29","v":57.322897193339465},{"$f":"'Avoidable costs'!N29","v":59.599492575052992},null,"Asset related",{"$f":"SUMPRODUCT(IF(AL$8='Avoidable costs'!$W$9:$W$161,1,0),'Avoidable costs'!$Y$9:$Y$161,'Avoidable costs'!$AC$9:$AC$161)","v":203.82378537649285},{"$f":"SUMPRODUCT(IF(AM$8='Avoidable costs'!$W$9:$W$161,1,0),'Avoidable costs'!$Y$9:$Y$161,'Avoidable costs'!$AC$9:$AC$161)","v":219.03807595090285},{"$f":"SUMPRODUCT(IF(AN$8='Avoidable costs'!$W$9:$W$161,1,0),'Avoidable costs'!$Y$9:$Y$161,'Avoidable costs'!$AC$9:$AC$161)","v":236.87130359930694},{"$f":"SUMPRODUCT(IF(AO$8='Avoidable costs'!$W$9:$W$161,1,0),'Avoidable costs'!$Y$9:$Y$161,'Avoidable costs'!$AC$9:$AC$161)","v":249.30019368511452},{"$f":"SUMPRODUCT(IF(AP$8='Avoidable costs'!$W$9:$W$161,1,0),'Avoidable costs'!$Y$9:$Y$161,'Avoidable costs'!$AC$9:$AC$161)","v":269.42193688354035}]
[null,"CAC",{"$f":"(AE$14*(_xlfn.XLOOKUP($B10,Allocators!$B$7:$B$9,Allocators!F$7:F$9)/Allocators!F$11)+AL$14*(_xlfn.XLOOKUP($B10,Allocators!$B$7:$B$9,Allocators!L$7:L$9)/Allocators!L$11))/'BBM Costs'!C$13","v":1.3269753011967934E-2},{"$f":"(AF$14*(_xlfn.XLOOKUP($B10,Allocators!$B$7:$B$9,Allocators!G$7:G$9)/Allocators!G$11)+AM$14*(_xlfn.XLOOKUP($B10,Allocators!$B$7:$B$9,Allocators!M$7:M$9)/Allocators!M$11))/'BBM Costs'!D$13","v":1.3237777561139153E-2},{"$f":"(AG$14*(_xlfn.XLOOKUP($B10,Allocators!$B$7:$B$9,Allocators!H$7:H$9)/Allocators!H$11)+AN$14*(_xlfn.XLOOKUP($B10,Allocators!$B$7:$B$9,Allocators!N$7:N$9)/Allocators!N$11))/'BBM Costs'!E$13","v":1.3258358293479109E-2},{"$f":"(AH$14*(_xlfn.XLOOKUP($B10,Allocators!$B$7:$B$9,Allocators!I$7:I$9)/Allocators!I$11)+AO$14*(_xlfn.XLOOKUP($B10,Allocators!$B$7:$B$9,Allocators!O$7:O$9)/Allocators!O$11))/'BBM Costs'!F$13","v":1.2933376118328076E-2},{"$f":"(AI$14*(_xlfn.XLOOKUP($B10,Allocators!$B$7:$B$9,Allocators!J$7:J$9)/Allocators!J$11)+AP$14*(_xlfn.XLOOKUP($B10,Allocators!$B$7:$B$9,Allocators!P$7:P$9)/Allocators!P$11))/'BBM Costs'!G$13","v":1.2955425469560274E-2},null,"CAC",{"$f":"((X$14+(Q$14*_xlfn.XLOOKUP($I10,'Control panel'!$B$7:$B$9,'Control panel'!$C$7:$C$9)))/'BBM Costs'!C$13)+C10","v":0.36451498981858216},{"$f":"((Y$14+(R$14*_xlfn.XLOOKUP($I10,'Control panel'!$B$7:$B$9,'Control panel'!$C$7:$C$9)))/'BBM Costs'!D$13)+D10","v":0.35685537976737258},{"$f":"((Z$14+(S$14*_xlfn.XLOOKUP($I10,'Control panel'!$B$7:$B$9,'Control panel'!$C$7:$C$9)))/'BBM Costs'!E$13)+E10","v":0.35623753960103133},{"$f":"((AA$14+(T$14*_xlfn.XLOOKUP($I10,'Control panel'!$B$7:$B$9,'Control panel'!$C$7:$C$9)))/'BBM Costs'!F$13)+F10","v":0.37447077027243258},{"$f":"((AB$14+(U$14*_xlfn.XLOOKUP($I10,'Control panel'!$B$7:$B$9,'Control panel'!$C$7:$C$9)))/'BBM Costs'!G$13)+G10","v":0.37818902692598477},null,"Return on",{"$f":"SUMPRODUCT('BBM Costs'!X$7:X$37,'Control panel'!$U$7:$U$37,--('Control panel'!$X$7:$X$37=Outputs!$P$6))","v":714.84753939983955},{"$f":"SUMPRODUCT('BBM Costs'!Y$7:Y$37,'Control panel'!$U$7:$U$37,--('Control panel'!$X$7:$X$37=Outputs!$P$6))","v":780.17299173785136},{"$f":"SUMPRODUCT('BBM Costs'!Z$7:Z$37,'Control panel'!$U$7:$U$37,--('Control panel'!$X$7:$X$37=Outputs!$P$6))","v":846.95518074265692},{"$f":"SUMPRODUCT('BBM Costs'!AA$7:AA$37,'Control panel'!$U$7:$U$37,--('Control panel'!$X$7:$X$37=Outputs!$P$6))","v":889.35564551043444},{"$f":"SUMPRODUCT('BBM Costs'!AB$7:AB$37,'Control panel'!$U$7:$U$37,--('Control panel'!$X$7:$X$37=Outputs!$P$6))","v":961.32216793499333},null,"Return on",{"$f":"SUMPRODUCT('BBM Costs'!X$7:X$37,'Control panel'!$U$7:$U$37,--('Control panel'!$X$7:$X$37=$W$6))","v":0},{"$f":"SUMPRODUCT('BBM Costs'!Y$7:Y$37,'Control panel'!$U$7:$U$37,--('Control panel'!$X$7:$X$37=$W$6))","v":0},{"$f":"SUMPRODUCT('BBM Costs'!Z$7:Z$37,'Control panel'!$U$7:$U$37,--('Control panel'!$X$7:$X$37=$W$6))","v":0},{"$f":"SUMPRODUCT('BBM Costs'!AA$7:AA$37,'Control panel'!$U$7:$U$37,--('Control panel'!$X$7:$X$37=$W$6))","v":0},{"$f":"SUMPRODUCT('BBM Costs'!AB$7:AB$37,'Control panel'!$U$7:$U$37,--('Control panel'!$X$7:$X$37=$W$6))","v":0},null,"Asset related",{"$f":"'Avoidable costs'!Q29","v":74.303133002831757},{"$f":"'Avoidable costs'!R29","v":77.221086232667346},{"$f":"'Avoidable costs'!S29","v":79.99083948979694},{"$f":"'Avoidable costs'!T29","v":81.283858578048225},{"$f":"'Avoidable costs'!U29","v":84.512070446378928}]
[null,"SAC",{"$f":"(AE$14*(_xlfn.XLOOKUP($B11,Allocators!$B$7:$B$9,Allocators!F$7:F$9)/Allocators!F$11)+AL$14*(_xlfn.XLOOKUP($B11,Allocators!$B$7:$B$9,Allocators!L$7:L$9)/Allocators!L$11))/'BBM Costs'!C$13","v":0.17195775096077887},{"$f":"(AF$14*(_xlfn.XLOOKUP($B11,Allocators!$B$7:$B$9,Allocators!G$7:G$9)/Allocators!G$11)+AM$14*(_xlfn.XLOOKUP($B11,Allocators!$B$7:$B$9,Allocators!M$7:M$9)/Allocators!M$11))/'BBM Costs'!D$13","v":0.16822229286496923},{"$f":"(AG$14*(_xlfn.XLOOKUP($B11,Allocators!$B$7:$B$9,Allocators!H$7:H$9)/Allocators!H$11)+AN$14*(_xlfn.XLOOKUP($B11,Allocators!$B$7:$B$9,Allocators!N$7:N$9)/Allocators!N$11))/'BBM Costs'!E$13","v":0.16500418373157905},{"$f":"(AH$14*(_xlfn.XLOOKUP($B11,Allocators!$B$7:$B$9,Allocators!I$7:I$9)/Allocators!I$11)+AO$14*(_xlfn.XLOOKUP($B11,Allocators!$B$7:$B$9,Allocators!O$7:O$9)/Allocators!O$11))/'BBM Costs'!F$13","v":0.15814228758524176},{"$f":"(AI$14*(_xlfn.XLOOKUP($B11,Allocators!$B$7:$B$9,Allocators!J$7:J$9)/Allocators!J$11)+AP$14*(_xlfn.XLOOKUP($B11,Allocators!$B$7:$B$9,Allocators!P$7:P$9)/Allocators!P$11))/'BBM Costs'!G$13","v":0.15541893114063254},null,"SAC",{"$f":"((X$14+(Q$14*_xlfn.XLOOKUP($I11,'Control panel'!$B$7:$B$9,'Control panel'!$C$7:$C$9)))/'BBM Costs'!C$13)+C11","v":0.89968343697179498},{"$f":"((Y$14+(R$14*_xlfn.XLOOKUP($I11,'Control panel'!$B$7:$B$9,'Control panel'!$C$7:$C$9)))/'BBM Costs'!D$13)+D11","v":0.88233791399898587},{"$f":"((Z$14+(S$14*_xlfn.XLOOKUP($I11,'Control panel'!$B$7:$B$9,'Control panel'!$C$7:$C$9)))/'BBM Costs'!E$13)+E11","v":0.87340367578384015},{"$f":"((AA$14+(T$14*_xlfn.XLOOKUP($I11,'Control panel'!$B$7:$B$9,'Control panel'!$C$7:$C$9)))/'BBM Costs'!F$13)+F11","v":0.87312943768796814},{"$f":"((AB$14+(U$14*_xlfn.XLOOKUP($I11,'Control panel'!$B$7:$B$9,'Control panel'!$C$7:$C$9)))/'BBM Costs'!G$13)+G11","v":0.86646817269897347},null,"Return of",{"$f":"SUMPRODUCT('BBM Costs'!Q$7:Q$37,'Control panel'!$N$7:$N$37,--('Control panel'!$Q$7:$Q$37=Outputs!$P$6))","v":202.48064180320424},{"$f":"SUMPRODUCT('BBM Costs'!R$7:R$37,'Control panel'!$N$7:$N$37,--('Control panel'!$Q$7:$Q$37=Outputs!$P$6))","v":201.64862801225061},{"$f":"SUMPRODUCT('BBM Costs'!S$7:S$37,'Control panel'!$N$7:$N$37,--('Control panel'!$Q$7:$Q$37=Outputs!$P$6))","v":207.83449369393077},{"$f":"SUMPRODUCT('BBM Costs'!T$7:T$37,'Control panel'!$N$7:$N$37,--('Control panel'!$Q$7:$Q$37=Outputs!$P$6))","v":221.44347898813629},{"$f":"SUMPRODUCT('BBM Costs'!U$7:U$37,'Control panel'!$N$7:$N$37,--('Control panel'!$Q$7:$Q$37=Outputs!$P$6))","v":217.6403561590873},null,"Return of",{"$f":"SUMPRODUCT('BBM Costs'!Q$7:Q$37,'Control panel'!$N$7:$N$37,--('Control panel'!$Q$7:$Q$37=$W$6))","v":0},{"$f":"SUMPRODUCT('BBM Costs'!R$7:R$37,'Control panel'!$N$7:$N$37,--('Control panel'!$Q$7:$Q$37=$W$6))","v":0},{"$f":"SUMPRODUCT('BBM Costs'!S$7:S$37,'Control panel'!$N$7:$N$37,--('Control panel'!$Q$7:$Q$37=$W$6))","v":0},{"$f":"SUMPRODUCT('BBM Costs'!T$7:T$37,'Control panel'!$N$7:$N$37,--('Control panel'!$Q$7:$Q$37=$W$6))","v":0},{"$f":"SUMPRODUCT('BBM Costs'!U$7:U$37,'Control panel'!$N$7:$N$37,--('Control panel'!$Q$7:$Q$37=$W$6))","v":0}]
[]
[]
[null,null,null,null,null,null,null,null,null,null,null,null,null,null,null,"Total",{"$f":"SUM(Q9:Q11)","v":1227.7295781923303},{"$f":"SUM(R9:R11)","v":1304.3877840225175},1388.9098476929853,1450.33925760082,1531.9588130467778,null,"Total",{"$f":"SUM(X9:X11)","v":-159.80517963099308},{"$f":"SUM(Y9:Y11)","v":-173.02502295525267},-177.27395675652832,-130.09992581533493,-114.48628835841032,null,"Total",{"$f":"SUM(AE9:AE11)","v":126.70309197100291},{"$f":"SUM(AF9:AF11)","v":131.67884038840617},136.40187544080027,138.6067557713877,144.11156302143192,null,"Total",{"$f":"SUM(AL9:AL11)","v":203.82378537649285},{"$f":"SUM(AM9:AM11)","v":219.03807595090285},236.87130359930694,249.30019368511452,269.42193688354035]

{"sheet":"Avoidable costs","index":3,"n_rows":163,"n_cols":71,"rows_kept":163,"cut":false,"hidden":false,"merged":[[3,22,3,70],[5,22,5,28],[5,30,5,49],[5,51,5,70],[5,1,5,6],[5,8,5,13],[5,15,5,20],[3,1,3,20]]}
[]
[null,"Avoidable costs"]
[]
[null,"Customer related costs",null,null,null,null,null,null,null,null,null,null,null,null,null,null,null,null,null,null,null,null,"Energy related costs"]
[]
[null,"Total costs",null,null,null,null,null,null,"Operational expenditure",null,null,null,null,null,null,"Asset related costs",null,null,null,null,null,null,"Energy related costs",null,null,null,null,null,null,null,"Matching",null,null,null,null,null,null,null,null,null,null,null,null,null,null,null,null,null,null,null,null,"Asset values"]
[]
[null,"Category","2025-26","2026-27","2027-28","2028-29","2029-30",null,"Category","2025-26","2026-27","2027-28","2028-29","2029-30",null,"Category","2025-26","2026-27","2027-28","2028-29","2029-30",null,"Year","Category","Asset related helper column","Opex","Return of capex","Return on capex","Total",null,"Category",{"$f":"$B$9","v":"Preventative Maintenance"},{"$f":"$B$10","v":"Corrective Maintenance"},{"$f":"$B$11","v":"Forced Maintenance"},{"$f":"$B$12","v":"Vegetation Management"},{"$f":"$B$13","v":"Other Network Maintenance"},{"$f":"$B$14","v":"Network Operating Costs"},{"$f":"$B$15","v":"Meter Reading"},{"$f":"$B$16","v":"Customer Service (incl Call Centre)"},{"$f":"$B$17","v":"Other Operating Costs"},{"$f":"$B$18","v":"Training"},{"$f":"$B$19","v":"Debt raising costs"},{"$f":"$B$20","v":"Non-network Alternatives"},{"$f":"$B$21","v":"Corporate Restructuring"},{"$f":"$B$22","v":"Corporate Allocations"},"EBSS","CESS","Control period carryover","Shared asset decrements","DMIA",null,"Year",{"$f":"$B$9","v":"Preventative Maintenance"},{"$f":"$B$10","v":"Corrective Maintenance"},{"$f":"$B$11","v":"Forced Maintenance"},{"$f":"$B$12","v":"Vegetation Management"},{"$f":"$B$13","v":"Other Network Maintenance"},{"$f":"$B$14","v":"Network Operating Costs"},{"$f":"$B$15","v":"Meter Reading"},{"$f":"$B$16","v":"Customer Service (incl Call Centre)"},{"$f":"$B$17","v":"Other Operating Costs"},{"$f":"$B$18","v":"Training"},{"$f":"$B$19","v":"Debt raising costs"},{"$f":"$B$20","v":"Non-network Alternatives"},{"$f":"$B$21","v":"Corporate Restructuring"},{"$f":"$B$22","v":"Corporate Allocations"},"EBSS","CESS","Control period carryover","Shared asset decrements","DMIA"]
[null,{"$f":"'Opex costs'!B7","v":"Preventative Maintenance"},{"$f":"_xlfn.XLOOKUP($B9,'BBM Costs'!$I$7:$I$25,'BBM Costs'!J$7:J$25)*_xlfn.XLOOKUP($B9,'Control panel'!$E$7:$E$25,'Control panel'!$F$7:$F$25)","v":44.738893332861743},{"$f":"_xlfn.XLOOKUP($B9,'BBM Costs'!$I$7:$I$25,'BBM Costs'!K$7:K$25)*_xlfn.XLOOKUP($B9,'Control panel'!$E$7:$E$25,'Control panel'!$F$7:$F$25)","v":46.495831338354975},{"$f":"_xlfn.XLOOKUP($B9,'BBM Costs'!$I$7:$I$25,'BBM Costs'!L$7:L$25)*_xlfn.XLOOKUP($B9,'Control panel'!$E$7:$E$25,'Control panel'!$F$7:$F$25)","v":48.163536191720247},{"$f":"_xlfn.XLOOKUP($B9,'BBM Costs'!$I$7:$I$25,'BBM Costs'!M$7:M$25)*_xlfn.XLOOKUP($B9,'Control panel'!$E$7:$E$25,'Control panel'!$F$7:$F$25)","v":48.942079985619536},{"$f":"_xlfn.XLOOKUP($B9,'BBM Costs'!$I$7:$I$25,'BBM Costs'!N$7:N$25)*_xlfn.XLOOKUP($B9,'Control panel'!$E$7:$E$25,'Control panel'!$F$7:$F$25)","v":50.885828796690824},null,{"$f":"B9","v":"Preventative Maintenance"},{"$f":"C9*_xlfn.XLOOKUP($I9,'Control panel'!$E$7:$E$25,'Control panel'!$H$7:$H$25)","v":19.237724133130548},{"$f":"D9*_xlfn.XLOOKUP($I9,'Control panel'!$E$7:$E$25,'Control panel'!$H$7:$H$25)","v":19.993207475492639},{"$f":"E9*_xlfn.XLOOKUP($I9,'Control panel'!$E$7:$E$25,'Control panel'!$H$7:$H$25)","v":20.710320562439705},{"$f":"F9*_xlfn.XLOOKUP($I9,'Control panel'!$E$7:$E$25,'Control panel'!$H$7:$H$25)","v":21.045094393816399},{"$f":"G9*_xlfn.XLOOKUP($I9,'Control panel'!$E$7:$E$25,'Control panel'!$H$7:$H$25)","v":21.880906382577052},null,{"$f":"B9","v":"Preventative Maintenance"},{"$f":"C9*_xlfn.XLOOKUP($P9,'Control panel'!$E$7:$E$25,'Control panel'!$I$7:$I$25)","v":25.501169199731198},{"$f":"D9*_xlfn.XLOOKUP($P9,'Control panel'!$E$7:$E$25,'Control panel'!$I$7:$I$25)","v":26.50262386286234},{"$f":"E9*_xlfn.XLOOKUP($P9,'Control panel'!$E$7:$E$25,'Control panel'!$I$7:$I$25)","v":27.453215629280542},{"$f":"F9*_xlfn.XLOOKUP($P9,'Control panel'!$E$7:$E$25,'Control panel'!$I$7:$I$25)","v":27.896985591803137},{"$f":"G9*_xlfn.XLOOKUP($P9,'Control panel'!$E$7:$E$25,'Control panel'!$I$7:$I$25)","v":29.004922414113771},null,"2025-26",{"$f":"'PTRM Data'!B7","v":"Overhead Sub-Transmission Lines"},{"$f":"_xlfn.XLOOKUP(X9,'Control panel'!$L$7:$L$37,'Control panel'!$P$7:$P$37)","v":1},{"$f":"SUMPRODUCT(_xlfn.XLOOKUP(W9,$AZ$9:$AZ$13,$BA$9:$BS$13),_xlfn.XLOOKUP(X9,$AE$9:$AE$39,$AF$9:$AX$39))","v":7.7745869948448352},{"$f":"_xlfn.XLOOKUP(W9,'BBM Costs'!$Q$6:$U$6,_xlfn.XLOOKUP(X9,'BBM Costs'!$P$7:$P$37,'BBM Costs'!$Q$7:$U$37))*_xlfn.XLOOKUP(X9,'Control panel'!$L$7:$L$37,'Control panel'!$M$7:$M$37)","v":0},{"$f":"_xlfn.XLOOKUP(W9,'BBM Costs'!$X$6:$AB$6,_xlfn.XLOOKUP(X9,'BBM Costs'!$W$7:$W$37,'BBM Costs'!$X$7:$AB$37))*_xlfn.XLOOKUP(X9,'Control panel'!$S$7:$S$37,'Control panel'!$T$7:$T$37)","v":0},{"$f":"SUM(Z9:AB9)","v":7.7745869948448352},null,{"$f":"'PTRM Data'!B7","v":"Overhead Sub-Transmission Lines"},{"$f":"'Control panel'!$AA7/SUMPRODUCT('Control panel'!$AA$7:$AA$37,'Control panel'!AB$7:AB$37)*'Control panel'!AB7","v":0.10538633269597716},{"$f":"'Control panel'!$AA7/SUMPRODUCT('Control panel'!$AA$7:$AA$37,'Control panel'!AC$7:AC$37)*'Control panel'!AC7","v":0.10638235895102226},{"$f":"'Control panel'!$AA7/SUMPRODUCT('Control panel'!$AA$7:$AA$37,'Control panel'!AD$7:AD$37)*'Control panel'!AD7","v":0.10637280217320064},{"$f":"'Control panel'!$AA7/SUMPRODUCT('Control panel'!$AA$7:$AA$37,'Control panel'!AE$7:AE$37)*'Control panel'!AE7","v":0.18319687411816954},{"$f":"'Control panel'!$AA7/SUMPRODUCT('Control panel'!$AA$7:$AA$37,'Control panel'!AF$7:AF$37)*'Control panel'!AF7","v":0},{"$f":"'Control panel'!$AA7/SUMPRODUCT('Control panel'!$AA$7:$AA$37,'Control panel'!AG$7:AG$37)*'Control panel'!AG7","v":0.10645341739483154},{"$f":"'Control panel'!$AA7/SUMPRODUCT('Control panel'!$AA$7:$AA$37,'Control panel'!AH$7:AH$37)*'Control panel'!AH7","v":0},{"$f":"'Control panel'!$AA7/SUMPRODUCT('Control panel'!$AA$7:$AA$37,'Control panel'!AI$7:AI$37)*'Control panel'!AI7","v":9.598162752961141E-2},{"$f":"'Control panel'!$AA7/SUMPRODUCT('Control panel'!$AA$7:$AA$37,'Control panel'!AJ$7:AJ$37)*'Control panel'!AJ7","v":0.10617729873072791},{"$f":"'Control panel'!$AA7/SUMPRODUCT('Control panel'!$AA$7:$AA$37,'Control panel'!AK$7:AK$37)*'Control panel'!AK7","v":0.10531669122012173},{"$f":"'Control panel'!$AA7/SUMPRODUCT('Control panel'!$AA$7:$AA$37,'Control panel'!AL$7:AL$37)*'Control panel'!AL7","v":9.598162752961141E-2},{"$f":"'Control panel'!$AA7/SUMPRODUCT('Control panel'!$AA$7:$AA$37,'Control panel'!AM$7:AM$37)*'Control panel'!AM7","v":0},{"$f":"'Control panel'!$AA7/SUMPRODUCT('Control panel'!$AA$7:$AA$37,'Control panel'!AN$7:AN$37)*'Control panel'!AN7","v":0.10617729873072791},{"$f":"'Control panel'!$AA7/SUMPRODUCT('Control panel'!$AA$7:$AA$37,'Control panel'!AO$7:AO$37)*'Control panel'!AO7","v":0.10617729873072791},{"$f":"'Control panel'!$AA7/SUMPRODUCT('Control panel'!$AA$7:$AA$37,'Control panel'!AP$7:AP$37)*'Control panel'!AP7","v":9.598162752961141E-2},{"$f":"'Control panel'!$AA7/SUMPRODUCT('Control panel'!$AA$7:$AA$37,'Control panel'!AQ$7:AQ$37)*'Control panel'!AQ7","v":9.598162752961141E-2},{"$f":"'Control panel'!$AA7/SUMPRODUCT('Control panel'!$AA$7:$AA$37,'Control panel'!AR$7:AR$37)*'Control panel'!AR7","v":9.598162752961141E-2},{"$f":"'Control panel'!$AA7/SUMPRODUCT('Control panel'!$AA$7:$AA$37,'Control panel'!AS$7:AS$37)*'Control panel'!AS7","v":9.598162752961141E-2},{"$f":"'Control panel'!$AA7/SUMPRODUCT('Control panel'!$AA$7:$AA$37,'Control panel'!AT$7:AT$37)*'Control panel'!AT7","v":9.598162752961141E-2},null,"2025-26",{"$f":"_xlfn.XLOOKUP($AZ9,$Q$8:$U$8,_xlfn.XLOOKUP(BA$8,$P$9:$P$27,$Q$9:$U$27))","v":25.501169199731198},{"$f":"_xlfn.XLOOKUP($AZ9,$Q$8:$U$8,_xlfn.XLOOKUP(BB$8,$P$9:$P$27,$Q$9:$U$27))","v":13.777846740286652},{"$f":"_xlfn.XLOOKUP($AZ9,$Q$8:$U$8,_xlfn.XLOOKUP(BC$8,$P$9:$P$27,$Q$9:$U$27))","v":0},{"$f":"_xlfn.XLOOKUP($AZ9,$Q$8:$U$8,_xlfn.XLOOKUP(BD$8,$P$9:$P$27,$Q$9:$U$27))","v":0},{"$f":"_xlfn.XLOOKUP($AZ9,$Q$8:$U$8,_xlfn.XLOOKUP(BE$8,$P$9:$P$27,$Q$9:$U$27))","v":0},{"$f":"_xlfn.XLOOKUP($AZ9,$Q$8:$U$8,_xlfn.XLOOKUP(BF$8,$P$9:$P$27,$Q$9:$U$27))","v":0},{"$f":"_xlfn.XLOOKUP($AZ9,$Q$8:$U$8,_xlfn.XLOOKUP(BG$8,$P$9:$P$27,$Q$9:$U$27))","v":0},{"$f":"_xlfn.XLOOKUP($AZ9,$Q$8:$U$8,_xlfn.XLOOKUP(BH$8,$P$9:$P$27,$Q$9:$U$27))","v":0},{"$f":"_xlfn.XLOOKUP($AZ9,$Q$8:$U$8,_xlfn.XLOOKUP(BI$8,$P$9:$P$27,$Q$9:$U$27))","v":25.500328967263012},{"$f":"_xlfn.XLOOKUP($AZ9,$Q$8:$U$8,_xlfn.XLOOKUP(BJ$8,$P$9:$P$27,$Q$9:$U$27))","v":8.6770330405584826},{"$f":"_xlfn.XLOOKUP($AZ9,$Q$8:$U$8,_xlfn.XLOOKUP(BK$8,$P$9:$P$27,$Q$9:$U$27))","v":0},{"$f":"_xlfn.XLOOKUP($AZ9,$Q$8:$U$8,_xlfn.XLOOKUP(BL$8,$P$9:$P$27,$Q$9:$U$27))","v":0.8467550549924121},{"$f":"_xlfn.XLOOKUP($AZ9,$Q$8:$U$8,_xlfn.XLOOKUP(BM$8,$P$9:$P$27,$Q$9:$U$27))","v":0},{"$f":"_xlfn.XLOOKUP($AZ9,$Q$8:$U$8,_xlfn.XLOOKUP(BN$8,$P$9:$P$27,$Q$9:$U$27))","v":0},{"$f":"_xlfn.XLOOKUP($AZ9,$Q$8:$U$8,_xlfn.XLOOKUP(BO$8,$P$9:$P$27,$Q$9:$U$27))","v":0},{"$f":"_xlfn.XLOOKUP($AZ9,$Q$8:$U$8,_xlfn.XLOOKUP(BP$8,$P$9:$P$27,$Q$9:$U$27))","v":0},{"$f":"_xlfn.XLOOKUP($AZ9,$Q$8:$U$8,_xlfn.XLOOKUP(BQ$8,$P$9:$P$27,$Q$9:$U$27))","v":0},{"$f":"_xlfn.XLOOKUP($AZ9,$Q$8:$U$8,_xlfn.XLOOKUP(BR$8,$P$9:$P$27,$Q$9:$U$27))","v":0},{"$f":"_xlfn.XLOOKUP($AZ9,$Q$8:$U$8,_xlfn.XLOOKUP(BS$8,$P$9:$P$27,$Q$9:$U$27))","v":0}]
[null,{"$f":"'Opex costs'!B8","v":"Corrective Maintenance"},{"$f":"_xlfn.XLOOKUP($B10,'BBM Costs'!$I$7:$I$25,'BBM Costs'!J$7:J$25)*_xlfn.XLOOKUP($B10,'Control panel'!$E$7:$E$25,'Control panel'!$F$7:$F$25)","v":24.171660947871317},{"$f":"_xlfn.XLOOKUP($B10,'BBM Costs'!$I$7:$I$25,'BBM Costs'!K$7:K$25)*_xlfn.XLOOKUP($B10,'Control panel'!$E$7:$E$25,'Control panel'!$F$7:$F$25)","v":25.120904583811189},{"$f":"_xlfn.XLOOKUP($B10,'BBM Costs'!$I$7:$I$25,'BBM Costs'!L$7:L$25)*_xlfn.XLOOKUP($B10,'Control panel'!$E$7:$E$25,'Control panel'!$F$7:$F$25)","v":26.02193706972329},{"$f":"_xlfn.XLOOKUP($B10,'BBM Costs'!$I$7:$I$25,'BBM Costs'!M$7:M$25)*_xlfn.XLOOKUP($B10,'Control panel'!$E$7:$E$25,'Control panel'!$F$7:$F$25)","v":26.442571001796448},{"$f":"_xlfn.XLOOKUP($B10,'BBM Costs'!$I$7:$I$25,'BBM Costs'!N$7:N$25)*_xlfn.XLOOKUP($B10,'Control panel'!$E$7:$E$25,'Control panel'!$F$7:$F$25)","v":27.492745329522442},null,{"$f":"B10","v":"Corrective Maintenance"},{"$f":"C10*_xlfn.XLOOKUP($I10,'Control panel'!$E$7:$E$25,'Control panel'!$H$7:$H$25)","v":10.393814207584667},{"$f":"D10*_xlfn.XLOOKUP($I10,'Control panel'!$E$7:$E$25,'Control panel'!$H$7:$H$25)","v":10.801988971038812},{"$f":"E10*_xlfn.XLOOKUP($I10,'Control panel'!$E$7:$E$25,'Control panel'!$H$7:$H$25)","v":11.189432939981014},{"$f":"F10*_xlfn.XLOOKUP($I10,'Control panel'!$E$7:$E$25,'Control panel'!$H$7:$H$25)","v":11.370305530772473},{"$f":"G10*_xlfn.XLOOKUP($I10,'Control panel'!$E$7:$E$25,'Control panel'!$H$7:$H$25)","v":11.82188049169465},null,{"$f":"B10","v":"Corrective Maintenance"},{"$f":"C10*_xlfn.XLOOKUP($P10,'Control panel'!$E$7:$E$25,'Control panel'!$I$7:$I$25)","v":13.777846740286652},{"$f":"D10*_xlfn.XLOOKUP($P10,'Control panel'!$E$7:$E$25,'Control panel'!$I$7:$I$25)","v":14.318915612772379},{"$f":"E10*_xlfn.XLOOKUP($P10,'Control panel'!$E$7:$E$25,'Control panel'!$I$7:$I$25)","v":14.832504129742277},{"$f":"F10*_xlfn.XLOOKUP($P10,'Control panel'!$E$7:$E$25,'Control panel'!$I$7:$I$25)","v":15.072265471023977},{"$f":"G10*_xlfn.XLOOKUP($P10,'Control panel'!$E$7:$E$25,'Control panel'!$I$7:$I$25)","v":15.670864837827795},null,"2025-26",{"$f":"'PTRM Data'!B8","v":"Underground Sub-Transmission Cables"},{"$f":"_xlfn.XLOOKUP(X10,'Control panel'!$L$7:$L$37,'Control panel'!$P$7:$P$37)","v":1},{"$f":"SUMPRODUCT(_xlfn.XLOOKUP(W10,$AZ$9:$AZ$13,$BA$9:$BS$13),_xlfn.XLOOKUP(X10,$AE$9:$AE$39,$AF$9:$AX$39))","v":0.3427975738396018},{"$f":"_xlfn.XLOOKUP(W10,'BBM Costs'!$Q$6:$U$6,_xlfn.XLOOKUP(X10,'BBM Costs'!$P$7:$P$37,'BBM Costs'!$Q$7:$U$37))*_xlfn.XLOOKUP(X10,'Control panel'!$L$7:$L$37,'Control panel'!$M$7:$M$37)","v":0},{"$f":"_xlfn.XLOOKUP(W10,'BBM Costs'!$X$6:$AB$6,_xlfn.XLOOKUP(X10,'BBM Costs'!$W$7:$W$37,'BBM Costs'!$X$7:$AB$37))*_xlfn.XLOOKUP(X10,'Control panel'!$S$7:$S$37,'Control panel'!$T$7:$T$37)","v":0},{"$f":"SUM(Z10:AB10)","v":0.3427975738396018},null,{"$f":"'PTRM Data'!B8","v":"Underground Sub-Transmission Cables"},{"$f":"'Control panel'!$AA8/SUMPRODUCT('Control panel'!$AA$7:$AA$37,'Control panel'!AB$7:AB$37)*'Control panel'!AB8","v":4.6467007428161239E-3},{"$f":"'Control panel'!$AA8/SUMPRODUCT('Control panel'!$AA$7:$AA$37,'Control panel'!AC$7:AC$37)*'Control panel'!AC8","v":4.6906175944683602E-3},{"$f":"'Control panel'!$AA8/SUMPRODUCT('Control panel'!$AA$7:$AA$37,'Control panel'!AD$7:AD$37)*'Control panel'!AD8","v":4.6901962164256229E-3},{"$f":"'Control panel'!$AA8/SUMPRODUCT('Control panel'!$AA$7:$AA$37,'Control panel'!AE$7:AE$37)*'Control panel'!AE8","v":0},{"$f":"'Control panel'!$AA8/SUMPRODUCT('Control panel'!$AA$7:$AA$37,'Control panel'!AF$7:AF$37)*'Control panel'!AF8","v":0},{"$f":"'Control panel'!$AA8/SUMPRODUCT('Control panel'!$AA$7:$AA$37,'Control panel'!AG$7:AG$37)*'Control panel'!AG8","v":4.6937507077970545E-3},{"$f":"'Control panel'!$AA8/SUMPRODUCT('Control panel'!$AA$7:$AA$37,'Control panel'!AH$7:AH$37)*'Control panel'!AH8","v":0},{"$f":"'Control panel'!$AA8/SUMPRODUCT('Control panel'!$AA$7:$AA$37,'Control panel'!AI$7:AI$37)*'Control panel'!AI8","v":4.2320278970630759E-3},{"$f":"'Control panel'!$AA8/SUMPRODUCT('Control panel'!$AA$7:$AA$37,'Control panel'!AJ$7:AJ$37)*'Control panel'!AJ8","v":4.6815760664676411E-3},{"$f":"'Control panel'!$AA8/SUMPRODUCT('Control panel'!$AA$7:$AA$37,'Control panel'!AK$7:AK$37)*'Control panel'!AK8","v":4.6436301065266748E-3},{"$f":"'Control panel'!$AA8/SUMPRODUCT('Control panel'!$AA$7:$AA$37,'Control panel'!AL$7:AL$37)*'Control panel'!AL8","v":4.2320278970630759E-3},{"$f":"'Control panel'!$AA8/SUMPRODUCT('Control panel'!$AA$7:$AA$37,'Control panel'!AM$7:AM$37)*'Control panel'!AM8","v":0},{"$f":"'Control panel'!$AA8/SUMPRODUCT('Control panel'!$AA$7:$AA$37,'Control panel'!AN$7:AN$37)*'Control panel'!AN8","v":4.6815760664676411E-3},{"$f":"'Control panel'!$AA8/SUMPRODUCT('Control panel'!$AA$7:$AA$37,'Control panel'!AO$7:AO$37)*'Control panel'!AO8","v":4.6815760664676411E-3},{"$f":"'Control panel'!$AA8/SUMPRODUCT('Control panel'!$AA$7:$AA$37,'Control panel'!AP$7:AP$37)*'Control panel'!AP8","v":4.2320278970630759E-3},{"$f":"'Control panel'!$AA8/SUMPRODUCT('Control panel'!$AA$7:$AA$37,'Control panel'!AQ$7:AQ$37)*'Control panel'!AQ8","v":4.2320278970630759E-3},{"$f":"'Control panel'!$AA8/SUMPRODUCT('Control panel'!$AA$7:$AA$37,'Control panel'!AR$7:AR$37)*'Control panel'!AR8","v":4.2320278970630759E-3},{"$f":"'Control panel'!$AA8/SUMPRODUCT('Control panel'!$AA$7:$AA$37,'Control panel'!AS$7:AS$37)*'Control panel'!AS8","v":4.2320278970630759E-3},{"$f":"'Control panel'!$AA8/SUMPRODUCT('Control panel'!$AA$7:$AA$37,'Control panel'!AT$7:AT$37)*'Control panel'!AT8","v":4.2320278970630759E-3},null,"2026-27",{"$f":"_xlfn.XLOOKUP($AZ10,$Q$8:$U$8,_xlfn.XLOOKUP(BA$8,$P$9:$P$27,$Q$9:$U$27))","v":26.50262386286234},{"$f":"_xlfn.XLOOKUP($AZ10,$Q$8:$U$8,_xlfn.XLOOKUP(BB$8,$P$9:$P$27,$Q$9:$U$27))","v":14.318915612772379},{"$f":"_xlfn.XLOOKUP($AZ10,$Q$8:$U$8,_xlfn.XLOOKUP(BC$8,$P$9:$P$27,$Q$9:$U$27))","v":0},{"$f":"_xlfn.XLOOKUP($AZ10,$Q$8:$U$8,_xlfn.XLOOKUP(BD$8,$P$9:$P$27,$Q$9:$U$27))","v":0},{"$f":"_xlfn.XLOOKUP($AZ10,$Q$8:$U$8,_xlfn.XLOOKUP(BE$8,$P$9:$P$27,$Q$9:$U$27))","v":0},{"$f":"_xlfn.XLOOKUP($AZ10,$Q$8:$U$8,_xlfn.XLOOKUP(BF$8,$P$9:$P$27,$Q$9:$U$27))","v":0},{"$f":"_xlfn.XLOOKUP($AZ10,$Q$8:$U$8,_xlfn.XLOOKUP(BG$8,$P$9:$P$27,$Q$9:$U$27))","v":0},{"$f":"_xlfn.XLOOKUP($AZ10,$Q$8:$U$8,_xlfn.XLOOKUP(BH$8,$P$9:$P$27,$Q$9:$U$27))","v":0},{"$f":"_xlfn.XLOOKUP($AZ10,$Q$8:$U$8,_xlfn.XLOOKUP(BI$8,$P$9:$P$27,$Q$9:$U$27))","v":26.50175063368264},{"$f":"_xlfn.XLOOKUP($AZ10,$Q$8:$U$8,_xlfn.XLOOKUP(BJ$8,$P$9:$P$27,$Q$9:$U$27))","v":9.0177882087843333},{"$f":"_xlfn.XLOOKUP($AZ10,$Q$8:$U$8,_xlfn.XLOOKUP(BK$8,$P$9:$P$27,$Q$9:$U$27))","v":0},{"$f":"_xlfn.XLOOKUP($AZ10,$Q$8:$U$8,_xlfn.XLOOKUP(BL$8,$P$9:$P$27,$Q$9:$U$27))","v":0.88000791456564909},{"$f":"_xlfn.XLOOKUP($AZ10,$Q$8:$U$8,_xlfn.XLOOKUP(BM$8,$P$9:$P$27,$Q$9:$U$27))","v":0},{"$f":"_xlfn.XLOOKUP($AZ10,$Q$8:$U$8,_xlfn.XLOOKUP(BN$8,$P$9:$P$27,$Q$9:$U$27))","v":0},{"$f":"_xlfn.XLOOKUP($AZ10,$Q$8:$U$8,_xlfn.XLOOKUP(BO$8,$P$9:$P$27,$Q$9:$U$27))","v":0},{"$f":"_xlfn.XLOOKUP($AZ10,$Q$8:$U$8,_xlfn.XLOOKUP(BP$8,$P$9:$P$27,$Q$9:$U$27))","v":0},{"$f":"_xlfn.XLOOKUP($AZ10,$Q$8:$U$8,_xlfn.XLOOKUP(BQ$8,$P$9:$P$27,$Q$9:$U$27))","v":0},{"$f":"_xlfn.XLOOKUP($AZ10,$Q$8:$U$8,_xlfn.XLOOKUP(BR$8,$P$9:$P$27,$Q$9:$U$27))","v":0},{"$f":"_xlfn.XLOOKUP($AZ10,$Q$8:$U$8,_xlfn.XLOOKUP(BS$8,$P$9:$P$27,$Q$9:$U$27))","v":0}]
[null,{"$f":"'Opex costs'!B9","v":"Forced Maintenance"},{"$f":"_xlfn.XLOOKUP($B11,'BBM Costs'!$I$7:$I$25,'BBM Costs'!J$7:J$25)*_xlfn.XLOOKUP($B11,'Control panel'!$E$7:$E$25,'Control panel'!$F$7:$F$25)","v":0},{"$f":"_xlfn.XLOOKUP($B11,'BBM Costs'!$I$7:$I$25,'BBM Costs'!K$7:K$25)*_xlfn.XLOOKUP($B11,'Control panel'!$E$7:$E$25,'Control panel'!$F$7:$F$25)","v":0},{"$f":"_xlfn.XLOOKUP($B11,'BBM Costs'!$I$7:$I$25,'BBM Costs'!L$7:L$25)*_xlfn.XLOOKUP($B11,'Control panel'!$E$7:$E$25,'Control panel'!$F$7:$F$25)","v":0},{"$f":"_xlfn.XLOOKUP($B11,'BBM Costs'!$I$7:$I$25,'BBM Costs'!M$7:M$25)*_xlfn.XLOOKUP($B11,'Control panel'!$E$7:$E$25,'Control panel'!$F$7:$F$25)","v":0},{"$f":"_xlfn.XLOOKUP($B11,'BBM Costs'!$I$7:$I$25,'BBM Costs'!N$7:N$25)*_xlfn.XLOOKUP($B11,'Control panel'!$E$7:$E$25,'Control panel'!$F$7:$F$25)","v":0},null,"Forced Maintenance",{"$f":"C11*_xlfn.XLOOKUP($I11,'Control panel'!$E$7:$E$25,'Control panel'!$H$7:$H$25)","v":0},{"$f":"D11*_xlfn.XLOOKUP($I11,'Control panel'!$E$7:$E$25,'Control panel'!$H$7:$H$25)","v":0},{"$f":"E11*_xlfn.XLOOKUP($I11,'Control panel'!$E$7:$E$25,'Control panel'!$H$7:$H$25)","v":0},{"$f":"F11*_xlfn.XLOOKUP($I11,'Control panel'!$E$7:$E$25,'Control panel'!$H$7:$H$25)","v":0},{"$f":"G11*_xlfn.XLOOKUP($I11,'Control panel'!$E$7:$E$25,'Control panel'!$H$7:$H$25)","v":0},null,"Forced Maintenance",{"$f":"C11*_xlfn.XLOOKUP($P11,'Control panel'!$E$7:$E$25,'Control panel'!$I$7:$I$25)","v":0},{"$f":"D11*_xlfn.XLOOKUP($P11,'Control panel'!$E$7:$E$25,'Control panel'!$I$7:$I$25)","v":0},{"$f":"E11*_xlfn.XLOOKUP($P11,'Control panel'!$E$7:$E$25,'Control panel'!$I$7:$I$25)","v":0},{"$f":"F11*_xlfn.XLOOKUP($P11,'Control panel'!$E$7:$E$25,'Control panel'!$I$7:$I$25)","v":0},{"$f":"G11*_xlfn.XLOOKUP($P11,'Control panel'!$E$7:$E$25,'Control panel'!$I$7:$I$25)","v":0},null,"2025-26",{"$f":"'PTRM Data'!B9","v":"Overhead Distribution Lines"},{"$f":"_xlfn.XLOOKUP(X11,'Control panel'!$L$7:$L$37,'Control panel'!$P$7:$P$37)","v":0.57000000000000006},31.875676745408185,{"$f":"_xlfn.XLOOKUP(W11,'BBM Costs'!$Q$6:$U$6,_xlfn.XLOOKUP(X11,'BBM Costs'!$P$7:$P$37,'BBM Costs'!$Q$7:$U$37))*_xlfn.XLOOKUP(X11,'Control panel'!$L$7:$L$37,'Control panel'!$M$7:$M$37)","v":5.8767807961516514},{"$f":"_xlfn.XLOOKUP(W11,'BBM Costs'!$X$6:$AB$6,_xlfn.XLOOKUP(X11,'BBM Costs'!$W$7:$W$37,'BBM Costs'!$X$7:$AB$37))*_xlfn.XLOOKUP(X11,'Control panel'!$S$7:$S$37,'Control panel'!$T$7:$T$37)","v":163.90919537381848},201.66165291537831,null,{"$f":"'PTRM Data'!B9","v":"Overhead Distribution Lines"},{"$f":"'Control panel'!$AA9/SUMPRODUCT('Control panel'!$AA$7:$AA$37,'Control panel'!AB$7:AB$37)*'Control panel'!AB9","v":0.4320822027753326},{"$f":"'Control panel'!$AA9/SUMPRODUCT('Control panel'!$AA$7:$AA$37,'Control panel'!AC$7:AC$37)*'Control panel'!AC9","v":0.43616589377484283},{"$f":"'Control panel'!$AA9/SUMPRODUCT('Control panel'!$AA$7:$AA$37,'Control panel'!AD$7:AD$37)*'Control panel'!AD9","v":0.43612671114549267},{"$f":"'Control panel'!$AA9/SUMPRODUCT('Control panel'!$AA$7:$AA$37,'Control panel'!AE$7:AE$37)*'Control panel'!AE9","v":0.75110412219093736},{"$f":"'Control panel'!$AA9/SUMPRODUCT('Control panel'!$AA$7:$AA$37,'Control panel'!AF$7:AF$37)*'Control panel'!AF9","v":0},{"$f":"'Control panel'!$AA9/SUMPRODUCT('Control panel'!$AA$7:$AA$37,'Control panel'!AG$7:AG$37)*'Control panel'!AG9","v":0.43645723220689053},{"$f":"'Control panel'!$AA9/SUMPRODUCT('Control panel'!$AA$7:$AA$37,'Control panel'!AH$7:AH$37)*'Control panel'!AH9","v":0},{"$f":"'Control panel'!$AA9/SUMPRODUCT('Control panel'!$AA$7:$AA$37,'Control panel'!AI$7:AI$37)*'Control panel'!AI9","v":0.39352306877017917},{"$f":"'Control panel'!$AA9/SUMPRODUCT('Control panel'!$AA$7:$AA$37,'Control panel'!AJ$7:AJ$37)*'Control panel'!AJ9","v":0.4353251502987226},{"$f":"'Control panel'!$AA9/SUMPRODUCT('Control panel'!$AA$7:$AA$37,'Control panel'!AK$7:AK$37)*'Control panel'!AK9","v":0.43179667388821452},{"$f":"'Control panel'!$AA9/SUMPRODUCT('Control panel'!$AA$7:$AA$37,'Control panel'!AL$7:AL$37)*'Control panel'!AL9","v":0.39352306877017917},{"$f":"'Control panel'!$AA9/SUMPRODUCT('Control panel'!$AA$7:$AA$37,'Control panel'!AM$7:AM$37)*'Control panel'!AM9","v":0},{"$f":"'Control panel'!$AA9/SUMPRODUCT('Control panel'!$AA$7:$AA$37,'Control panel'!AN$7:AN$37)*'Control panel'!AN9","v":0.4353251502987226},{"$f":"'Control panel'!$AA9/SUMPRODUCT('Control panel'!$AA$7:$AA$37,'Control panel'!AO$7:AO$37)*'Control panel'!AO9","v":0.4353251502987226},{"$f":"'Control panel'!$AA9/SUMPRODUCT('Control panel'!$AA$7:$AA$37,'Control panel'!AP$7:AP$37)*'Control panel'!AP9","v":0.39352306877017917},{"$f":"'Control panel'!$AA9/SUMPRODUCT('Control panel'!$AA$7:$AA$37,'Control panel'!AQ$7:AQ$37)*'Control panel'!AQ9","v":0.39352306877017917},{"$f":"'Control panel'!$AA9/SUMPRODUCT('Control panel'!$AA$7:$AA$37,'Control panel'!AR$7:AR$37)*'Control panel'!AR9","v":0.39352306877017917},{"$f":"'Control panel'!$AA9/SUMPRODUCT('Control panel'!$AA$7:$AA$37,'Control panel'!AS$7:AS$37)*'Control panel'!AS9","v":0.39352306877017917},{"$f":"'Control panel'!$AA9/SUMPRODUCT('Control panel'!$AA$7:$AA$37,'Control panel'!AT$7:AT$37)*'Control panel'!AT9","v":0.39352306877017917},null,"2027-28",{"$f":"_xlfn.XLOOKUP($AZ11,$Q$8:$U$8,_xlfn.XLOOKUP(BA$8,$P$9:$P$27,$Q$9:$U$27))","v":27.453215629280542},{"$f":"_xlfn.XLOOKUP($AZ11,$Q$8:$U$8,_xlfn.XLOOKUP(BB$8,$P$9:$P$27,$Q$9:$U$27))","v":14.832504129742277},{"$f":"_xlfn.XLOOKUP($AZ11,$Q$8:$U$8,_xlfn.XLOOKUP(BC$8,$P$9:$P$27,$Q$9:$U$27))","v":0},{"$f":"_xlfn.XLOOKUP($AZ11,$Q$8:$U$8,_xlfn.XLOOKUP(BD$8,$P$9:$P$27,$Q$9:$U$27))","v":0},{"$f":"_xlfn.XLOOKUP($AZ11,$Q$8:$U$8,_xlfn.XLOOKUP(BE$8,$P$9:$P$27,$Q$9:$U$27))","v":0},{"$f":"_xlfn.XLOOKUP($AZ11,$Q$8:$U$8,_xlfn.XLOOKUP(BF$8,$P$9:$P$27,$Q$9:$U$27))","v":0},{"$f":"_xlfn.XLOOKUP($AZ11,$Q$8:$U$8,_xlfn.XLOOKUP(BG$8,$P$9:$P$27,$Q$9:$U$27))","v":0},{"$f":"_xlfn.XLOOKUP($AZ11,$Q$8:$U$8,_xlfn.XLOOKUP(BH$8,$P$9:$P$27,$Q$9:$U$27))","v":0},{"$f":"_xlfn.XLOOKUP($AZ11,$Q$8:$U$8,_xlfn.XLOOKUP(BI$8,$P$9:$P$27,$Q$9:$U$27))","v":27.452311079259832},{"$f":"_xlfn.XLOOKUP($AZ11,$Q$8:$U$8,_xlfn.XLOOKUP(BJ$8,$P$9:$P$27,$Q$9:$U$27))","v":9.3412367573858042},{"$f":"_xlfn.XLOOKUP($AZ11,$Q$8:$U$8,_xlfn.XLOOKUP(BK$8,$P$9:$P$27,$Q$9:$U$27))","v":0},{"$f":"_xlfn.XLOOKUP($AZ11,$Q$8:$U$8,_xlfn.XLOOKUP(BL$8,$P$9:$P$27,$Q$9:$U$27))","v":0.91157189412848683},{"$f":"_xlfn.XLOOKUP($AZ11,$Q$8:$U$8,_xlfn.XLOOKUP(BM$8,$P$9:$P$27,$Q$9:$U$27))","v":0},{"$f":"_xlfn.XLOOKUP($AZ11,$Q$8:$U$8,_xlfn.XLOOKUP(BN$8,$P$9:$P$27,$Q$9:$U$27))","v":0},{"$f":"_xlfn.XLOOKUP($AZ11,$Q$8:$U$8,_xlfn.XLOOKUP(BO$8,$P$9:$P$27,$Q$9:$U$27))","v":0},{"$f":"_xlfn.XLOOKUP($AZ11,$Q$8:$U$8,_xlfn.XLOOKUP(BP$8,$P$9:$P$27,$Q$9:$U$27))","v":0},{"$f":"_xlfn.XLOOKUP($AZ11,$Q$8:$U$8,_xlfn.XLOOKUP(BQ$8,$P$9:$P$27,$Q$9:$U$27))","v":0},{"$f":"_xlfn.XLOOKUP($AZ11,$Q$8:$U$8,_xlfn.XLOOKUP(BR$8,$P$9:$P$27,$Q$9:$U$27))","v":0},{"$f":"_xlfn.XLOOKUP($AZ11,$Q$8:$U$8,_xlfn.XLOOKUP(BS$8,$P$9:$P$27,$Q$9:$U$27))","v":0}]
[null,{"$f":"'Opex costs'!B10","v":"Vegetation Management"},{"$f":"_xlfn.XLOOKUP($B12,'BBM Costs'!$I$7:$I$25,'BBM Costs'!J$7:J$25)*_xlfn.XLOOKUP($B12,'Control panel'!$E$7:$E$25,'Control panel'!$F$7:$F$25)","v":0},{"$f":"_xlfn.XLOOKUP($B12,'BBM Costs'!$I$7:$I$25,'BBM Costs'!K$7:K$25)*_xlfn.XLOOKUP($B12,'Control panel'!$E$7:$E$25,'Control panel'!$F$7:$F$25)","v":0},{"$f":"_xlfn.XLOOKUP($B12,'BBM Costs'!$I$7:$I$25,'BBM Costs'!L$7:L$25)*_xlfn.XLOOKUP($B12,'Control panel'!$E$7:$E$25,'Control panel'!$F$7:$F$25)","v":0},{"$f":"_xlfn.XLOOKUP($B12,'BBM Costs'!$I$7:$I$25,'BBM Costs'!M$7:M$25)*_xlfn.XLOOKUP($B12,'Control panel'!$E$7:$E$25,'Control panel'!$F$7:$F$25)","v":0},{"$f":"_xlfn.XLOOKUP($B12,'BBM Costs'!$I$7:$I$25,'BBM Costs'!N$7:N$25)*_xlfn.XLOOKUP($B12,'Control panel'!$E$7:$E$25,'Control panel'!$F$7:$F$25)","v":0},null,"Vegetation Management",{"$f":"C12*_xlfn.XLOOKUP($I12,'Control panel'!$E$7:$E$25,'Control panel'!$H$7:$H$25)","v":0},{"$f":"D12*_xlfn.XLOOKUP($I12,'Control panel'!$E$7:$E$25,'Control panel'!$H$7:$H$25)","v":0},{"$f":"E12*_xlfn.XLOOKUP($I12,'Control panel'!$E$7:$E$25,'Control panel'!$H$7:$H$25)","v":0},{"$f":"F12*_xlfn.XLOOKUP($I12,'Control panel'!$E$7:$E$25,'Control panel'!$H$7:$H$25)","v":0},{"$f":"G12*_xlfn.XLOOKUP($I12,'Control panel'!$E$7:$E$25,'Control panel'!$H$7:$H$25)","v":0},null,"Vegetation Management",{"$f":"C12*_xlfn.XLOOKUP($P12,'Control panel'!$E$7:$E$25,'Control panel'!$I$7:$I$25)","v":0},{"$f":"D12*_xlfn.XLOOKUP($P12,'Control panel'!$E$7:$E$25,'Control panel'!$I$7:$I$25)","v":0},{"$f":"E12*_xlfn.XLOOKUP($P12,'Control panel'!$E$7:$E$25,'Control panel'!$I$7:$I$25)","v":0},{"$f":"F12*_xlfn.XLOOKUP($P12,'Control panel'!$E$7:$E$25,'Control panel'!$I$7:$I$25)","v":0},{"$f":"G12*_xlfn.XLOOKUP($P12,'Control panel'!$E$7:$E$25,'Control panel'!$I$7:$I$25)","v":0},null,"2025-26",{"$f":"'PTRM Data'!B10","v":"Underground Distribution Cables"},{"$f":"_xlfn.XLOOKUP(X12,'Control panel'!$L$7:$L$37,'Control panel'!$P$7:$P$37)","v":0.57000000000000006},5.6363980504893831,{"$f":"_xlfn.XLOOKUP(W12,'BBM Costs'!$Q$6:$U$6,_xlfn.XLOOKUP(X12,'BBM Costs'!$P$7:$P$37,'BBM Costs'!$Q$7:$U$37))*_xlfn.XLOOKUP(X12,'Control panel'!$L$7:$L$37,'Control panel'!$M$7:$M$37)","v":-1.1157428738174773},{"$f":"_xlfn.XLOOKUP(W12,'BBM Costs'!$X$6:$AB$6,_xlfn.XLOOKUP(X12,'BBM Costs'!$W$7:$W$37,'BBM Costs'!$X$7:$AB$37))*_xlfn.XLOOKUP(X12,'Control panel'!$S$7:$S$37,'Control panel'!$T$7:$T$37)","v":28.983148393715567},33.503803570387475,null,{"$f":"'PTRM Data'!B10","v":"Underground Distribution Cables"},{"$f":"'Control panel'!$AA10/SUMPRODUCT('Control panel'!$AA$7:$AA$37,'Control panel'!AB$7:AB$37)*'Control panel'!AB10","v":7.6402684869266962E-2},{"$f":"'Control panel'!$AA10/SUMPRODUCT('Control panel'!$AA$7:$AA$37,'Control panel'!AC$7:AC$37)*'Control panel'!AC10","v":7.7124781161442349E-2},{"$f":"'Control panel'!$AA10/SUMPRODUCT('Control panel'!$AA$7:$AA$37,'Control panel'!AD$7:AD$37)*'Control panel'!AD10","v":7.7117852715736041E-2},{"$f":"'Control panel'!$AA10/SUMPRODUCT('Control panel'!$AA$7:$AA$37,'Control panel'!AE$7:AE$37)*'Control panel'!AE10","v":0},{"$f":"'Control panel'!$AA10/SUMPRODUCT('Control panel'!$AA$7:$AA$37,'Control panel'!AF$7:AF$37)*'Control panel'!AF10","v":0},{"$f":"'Control panel'!$AA10/SUMPRODUCT('Control panel'!$AA$7:$AA$37,'Control panel'!AG$7:AG$37)*'Control panel'!AG10","v":7.717629691069347E-2},{"$f":"'Control panel'!$AA10/SUMPRODUCT('Control panel'!$AA$7:$AA$37,'Control panel'!AH$7:AH$37)*'Control panel'!AH10","v":0},{"$f":"'Control panel'!$AA10/SUMPRODUCT('Control panel'!$AA$7:$AA$37,'Control panel'!AI$7:AI$37)*'Control panel'!AI10","v":6.958448836567388E-2},{"$f":"'Control panel'!$AA10/SUMPRODUCT('Control panel'!$AA$7:$AA$37,'Control panel'!AJ$7:AJ$37)*'Control panel'!AJ10","v":7.697611718396466E-2},{"$f":"'Control panel'!$AA10/SUMPRODUCT('Control panel'!$AA$7:$AA$37,'Control panel'!AK$7:AK$37)*'Control panel'!AK10","v":7.6352196389428098E-2},{"$f":"'Control panel'!$AA10/SUMPRODUCT('Control panel'!$AA$7:$AA$37,'Control panel'!AL$7:AL$37)*'Control panel'!AL10","v":6.958448836567388E-2},{"$f":"'Control panel'!$AA10/SUMPRODUCT('Control panel'!$AA$7:$AA$37,'Control panel'!AM$7:AM$37)*'Control panel'!AM10","v":0},{"$f":"'Control panel'!$AA10/SUMPRODUCT('Control panel'!$AA$7:$AA$37,'Control panel'!AN$7:AN$37)*'Control panel'!AN10","v":7.697611718396466E-2},{"$f":"'Control panel'!$AA10/SUMPRODUCT('Control panel'!$AA$7:$AA$37,'Control panel'!AO$7:AO$37)*'Control panel'!AO10","v":7.697611718396466E-2},{"$f":"'Control panel'!$AA10/SUMPRODUCT('Control panel'!$AA$7:$AA$37,'Control panel'!AP$7:AP$37)*'Control panel'!AP10","v":6.958448836567388E-2},{"$f":"'Control panel'!$AA10/SUMPRODUCT('Control panel'!$AA$7:$AA$37,'Control panel'!AQ$7:AQ$37)*'Control panel'!AQ10","v":6.958448836567388E-2},{"$f":"'Control panel'!$AA10/SUMPRODUCT('Control panel'!$AA$7:$AA$37,'Control panel'!AR$7:AR$37)*'Control panel'!AR10","v":6.958448836567388E-2},{"$f":"'Control panel'!$AA10/SUMPRODUCT('Control panel'!$AA$7:$AA$37,'Control panel'!AS$7:AS$37)*'Control panel'!AS10","v":6.958448836567388E-2},{"$f":"'Control panel'!$AA10/SUMPRODUCT('Control panel'!$AA$7:$AA$37,'Control panel'!AT$7:AT$37)*'Control panel'!AT10","v":6.958448836567388E-2},null,"2028-29",{"$f":"_xlfn.XLOOKUP($AZ12,$Q$8:$U$8,_xlfn.XLOOKUP(BA$8,$P$9:$P$27,$Q$9:$U$27))","v":27.896985591803137},{"$f":"_xlfn.XLOOKUP($AZ12,$Q$8:$U$8,_xlfn.XLOOKUP(BB$8,$P$9:$P$27,$Q$9:$U$27))","v":15.072265471023977},{"$f":"_xlfn.XLOOKUP($AZ12,$Q$8:$U$8,_xlfn.XLOOKUP(BC$8,$P$9:$P$27,$Q$9:$U$27))","v":0},{"$f":"_xlfn.XLOOKUP($AZ12,$Q$8:$U$8,_xlfn.XLOOKUP(BD$8,$P$9:$P$27,$Q$9:$U$27))","v":0},{"$f":"_xlfn.XLOOKUP($AZ12,$Q$8:$U$8,_xlfn.XLOOKUP(BE$8,$P$9:$P$27,$Q$9:$U$27))","v":0},{"$f":"_xlfn.XLOOKUP($AZ12,$Q$8:$U$8,_xlfn.XLOOKUP(BF$8,$P$9:$P$27,$Q$9:$U$27))","v":0},{"$f":"_xlfn.XLOOKUP($AZ12,$Q$8:$U$8,_xlfn.XLOOKUP(BG$8,$P$9:$P$27,$Q$9:$U$27))","v":0},{"$f":"_xlfn.XLOOKUP($AZ12,$Q$8:$U$8,_xlfn.XLOOKUP(BH$8,$P$9:$P$27,$Q$9:$U$27))","v":0},{"$f":"_xlfn.XLOOKUP($AZ12,$Q$8:$U$8,_xlfn.XLOOKUP(BI$8,$P$9:$P$27,$Q$9:$U$27))","v":27.896066420102617},{"$f":"_xlfn.XLOOKUP($AZ12,$Q$8:$U$8,_xlfn.XLOOKUP(BJ$8,$P$9:$P$27,$Q$9:$U$27))","v":9.4922340154745282},{"$f":"_xlfn.XLOOKUP($AZ12,$Q$8:$U$8,_xlfn.XLOOKUP(BK$8,$P$9:$P$27,$Q$9:$U$27))","v":0},{"$f":"_xlfn.XLOOKUP($AZ12,$Q$8:$U$8,_xlfn.XLOOKUP(BL$8,$P$9:$P$27,$Q$9:$U$27))","v":0.92630707964397152},{"$f":"_xlfn.XLOOKUP($AZ12,$Q$8:$U$8,_xlfn.XLOOKUP(BM$8,$P$9:$P$27,$Q$9:$U$27))","v":0},{"$f":"_xlfn.XLOOKUP($AZ12,$Q$8:$U$8,_xlfn.XLOOKUP(BN$8,$P$9:$P$27,$Q$9:$U$27))","v":0},{"$f":"_xlfn.XLOOKUP($AZ12,$Q$8:$U$8,_xlfn.XLOOKUP(BO$8,$P$9:$P$27,$Q$9:$U$27))","v":0},{"$f":"_xlfn.XLOOKUP($AZ12,$Q$8:$U$8,_xlfn.XLOOKUP(BP$8,$P$9:$P$27,$Q$9:$U$27))","v":0},{"$f":"_xlfn.XLOOKUP($AZ12,$Q$8:$U$8,_xlfn.XLOOKUP(BQ$8,$P$9:$P$27,$Q$9:$U$27))","v":0},{"$f":"_xlfn.XLOOKUP($AZ12,$Q$8:$U$8,_xlfn.XLOOKUP(BR$8,$P$9:$P$27,$Q$9:$U$27))","v":0},{"$f":"_xlfn.XLOOKUP($AZ12,$Q$8:$U$8,_xlfn.XLOOKUP(BS$8,$P$9:$P$27,$Q$9:$U$27))","v":0}]
[null,{"$f":"'Opex costs'!B11","v":"Other Network Maintenance"},{"$f":"_xlfn.XLOOKUP($B13,'BBM Costs'!$I$7:$I$25,'BBM Costs'!J$7:J$25)*_xlfn.XLOOKUP($B13,'Control panel'!$E$7:$E$25,'Control panel'!$F$7:$F$25)","v":0},{"$f":"_xlfn.XLOOKUP($B13,'BBM Costs'!$I$7:$I$25,'BBM Costs'!K$7:K$25)*_xlfn.XLOOKUP($B13,'Control panel'!$E$7:$E$25,'Control panel'!$F$7:$F$25)","v":0},{"$f":"_xlfn.XLOOKUP($B13,'BBM Costs'!$I$7:$I$25,'BBM Costs'!L$7:L$25)*_xlfn.XLOOKUP($B13,'Control panel'!$E$7:$E$25,'Control panel'!$F$7:$F$25)","v":0},{"$f":"_xlfn.XLOOKUP($B13,'BBM Costs'!$I$7:$I$25,'BBM Costs'!M$7:M$25)*_xlfn.XLOOKUP($B13,'Control panel'!$E$7:$E$25,'Control panel'!$F$7:$F$25)","v":0},{"$f":"_xlfn.XLOOKUP($B13,'BBM Costs'!$I$7:$I$25,'BBM Costs'!N$7:N$25)*_xlfn.XLOOKUP($B13,'Control panel'!$E$7:$E$25,'Control panel'!$F$7:$F$25)","v":0},null,"Other Network Maintenance",{"$f":"C13*_xlfn.XLOOKUP($I13,'Control panel'!$E$7:$E$25,'Control panel'!$H$7:$H$25)","v":0},{"$f":"D13*_xlfn.XLOOKUP($I13,'Control panel'!$E$7:$E$25,'Control panel'!$H$7:$H$25)","v":0},{"$f":"E13*_xlfn.XLOOKUP($I13,'Control panel'!$E$7:$E$25,'Control panel'!$H$7:$H$25)","v":0},{"$f":"F13*_xlfn.XLOOKUP($I13,'Control panel'!$E$7:$E$25,'Control panel'!$H$7:$H$25)","v":0},{"$f":"G13*_xlfn.XLOOKUP($I13,'Control panel'!$E$7:$E$25,'Control panel'!$H$7:$H$25)","v":0},null,"Other Network Maintenance",{"$f":"C13*_xlfn.XLOOKUP($P13,'Control panel'!$E$7:$E$25,'Control panel'!$I$7:$I$25)","v":0},{"$f":"D13*_xlfn.XLOOKUP($P13,'Control panel'!$E$7:$E$25,'Control panel'!$I$7:$I$25)","v":0},{"$f":"E13*_xlfn.XLOOKUP($P13,'Control panel'!$E$7:$E$25,'Control panel'!$I$7:$I$25)","v":0},{"$f":"F13*_xlfn.XLOOKUP($P13,'Control panel'!$E$7:$E$25,'Control panel'!$I$7:$I$25)","v":0},{"$f":"G13*_xlfn.XLOOKUP($P13,'Control panel'!$E$7:$E$25,'Control panel'!$I$7:$I$25)","v":0},null,"2025-26",{"$f":"'PTRM Data'!B11","v":"Distribution Equipment"},{"$f":"_xlfn.XLOOKUP(X13,'Control panel'!$L$7:$L$37,'Control panel'!$P$7:$P$37)","v":0.57000000000000006},0.11922577960350034,{"$f":"_xlfn.XLOOKUP(W13,'BBM Costs'!$Q$6:$U$6,_xlfn.XLOOKUP(X13,'BBM Costs'!$P$7:$P$37,'BBM Costs'!$Q$7:$U$37))*_xlfn.XLOOKUP(X13,'Control panel'!$L$7:$L$37,'Control panel'!$M$7:$M$37)","v":0.62232990669524235},{"$f":"_xlfn.XLOOKUP(W13,'BBM Costs'!$X$6:$AB$6,_xlfn.XLOOKUP(X13,'BBM Costs'!$W$7:$W$37,'BBM Costs'!$X$7:$AB$37))*_xlfn.XLOOKUP(X13,'Control panel'!$S$7:$S$37,'Control panel'!$T$7:$T$37)","v":0.61307566137999214},1.3546313476787348,null,{"$f":"'PTRM Data'!B11","v":"Distribution Equipment"},{"$f":"'Control panel'!$AA11/SUMPRODUCT('Control panel'!$AA$7:$AA$37,'Control panel'!AB$7:AB$37)*'Control panel'!AB11","v":1.6161331378198183E-3},{"$f":"'Control panel'!$AA11/SUMPRODUCT('Control panel'!$AA$7:$AA$37,'Control panel'!AC$7:AC$37)*'Control panel'!AC11","v":1.6314075191910795E-3},{"$f":"'Control panel'!$AA11/SUMPRODUCT('Control panel'!$AA$7:$AA$37,'Control panel'!AD$7:AD$37)*'Control panel'!AD11","v":1.6312609629448073E-3},{"$f":"'Control panel'!$AA11/SUMPRODUCT('Control panel'!$AA$7:$AA$37,'Control panel'!AE$7:AE$37)*'Control panel'!AE11","v":0},{"$f":"'Control panel'!$AA11/SUMPRODUCT('Control panel'!$AA$7:$AA$37,'Control panel'!AF$7:AF$37)*'Control panel'!AF11","v":0},{"$f":"'Control panel'!$AA11/SUMPRODUCT('Control panel'!$AA$7:$AA$37,'Control panel'!AG$7:AG$37)*'Control panel'!AG11","v":1.6324972231671481E-3},{"$f":"'Control panel'!$AA11/SUMPRODUCT('Control panel'!$AA$7:$AA$37,'Control panel'!AH$7:AH$37)*'Control panel'!AH11","v":0},{"$f":"'Control panel'!$AA11/SUMPRODUCT('Control panel'!$AA$7:$AA$37,'Control panel'!AI$7:AI$37)*'Control panel'!AI11","v":1.471908974382645E-3},{"$f":"'Control panel'!$AA11/SUMPRODUCT('Control panel'!$AA$7:$AA$37,'Control panel'!AJ$7:AJ$37)*'Control panel'!AJ11","v":1.6282628550891188E-3},{"$f":"'Control panel'!$AA11/SUMPRODUCT('Control panel'!$AA$7:$AA$37,'Control panel'!AK$7:AK$37)*'Control panel'!AK11","v":1.6150651635007827E-3},{"$f":"'Control panel'!$AA11/SUMPRODUCT('Control panel'!$AA$7:$AA$37,'Control panel'!AL$7:AL$37)*'Control panel'!AL11","v":1.471908974382645E-3},{"$f":"'Control panel'!$AA11/SUMPRODUCT('Control panel'!$AA$7:$AA$37,'Control panel'!AM$7:AM$37)*'Control panel'!AM11","v":0},{"$f":"'Control panel'!$AA11/SUMPRODUCT('Control panel'!$AA$7:$AA$37,'Control panel'!AN$7:AN$37)*'Control panel'!AN11","v":1.6282628550891188E-3},{"$f":"'Control panel'!$AA11/SUMPRODUCT('Control panel'!$AA$7:$AA$37,'Control panel'!AO$7:AO$37)*'Control panel'!AO11","v":1.6282628550891188E-3},{"$f":"'Control panel'!$AA11/SUMPRODUCT('Control panel'!$AA$7:$AA$37,'Control panel'!AP$7:AP$37)*'Control panel'!AP11","v":1.471908974382645E-3},{"$f":"'Control panel'!$AA11/SUMPRODUCT('Control panel'!$AA$7:$AA$37,'Control panel'!AQ$7:AQ$37)*'Control panel'!AQ11","v":1.471908974382645E-3},{"$f":"'Control panel'!$AA11/SUMPRODUCT('Control panel'!$AA$7:$AA$37,'Control panel'!AR$7:AR$37)*'Control panel'!AR11","v":1.471908974382645E-3},{"$f":"'Control panel'!$AA11/SUMPRODUCT('Control panel'!$AA$7:$AA$37,'Control panel'!AS$7:AS$37)*'Control panel'!AS11","v":1.471908974382645E-3},{"$f":"'Control panel'!$AA11/SUMPRODUCT('Control panel'!$AA$7:$AA$37,'Control panel'!AT$7:AT$37)*'Control panel'!AT11","v":1.471908974382645E-3},null,"2029-30",{"$f":"_xlfn.XLOOKUP($AZ13,$Q$8:$U$8,_xlfn.XLOOKUP(BA$8,$P$9:$P$27,$Q$9:$U$27))","v":29.004922414113771},{"$f":"_xlfn.XLOOKUP($AZ13,$Q$8:$U$8,_xlfn.XLOOKUP(BB$8,$P$9:$P$27,$Q$9:$U$27))","v":15.670864837827795},{"$f":"_xlfn.XLOOKUP($AZ13,$Q$8:$U$8,_xlfn.XLOOKUP(BC$8,$P$9:$P$27,$Q$9:$U$27))","v":0},{"$f":"_xlfn.XLOOKUP($AZ13,$Q$8:$U$8,_xlfn.XLOOKUP(BD$8,$P$9:$P$27,$Q$9:$U$27))","v":0},{"$f":"_xlfn.XLOOKUP($AZ13,$Q$8:$U$8,_xlfn.XLOOKUP(BE$8,$P$9:$P$27,$Q$9:$U$27))","v":0},{"$f":"_xlfn.XLOOKUP($AZ13,$Q$8:$U$8,_xlfn.XLOOKUP(BF$8,$P$9:$P$27,$Q$9:$U$27))","v":0},{"$f":"_xlfn.XLOOKUP($AZ13,$Q$8:$U$8,_xlfn.XLOOKUP(BG$8,$P$9:$P$27,$Q$9:$U$27))","v":0},{"$f":"_xlfn.XLOOKUP($AZ13,$Q$8:$U$8,_xlfn.XLOOKUP(BH$8,$P$9:$P$27,$Q$9:$U$27))","v":0},{"$f":"_xlfn.XLOOKUP($AZ13,$Q$8:$U$8,_xlfn.XLOOKUP(BI$8,$P$9:$P$27,$Q$9:$U$27))","v":29.003966737244269},{"$f":"_xlfn.XLOOKUP($AZ13,$Q$8:$U$8,_xlfn.XLOOKUP(BJ$8,$P$9:$P$27,$Q$9:$U$27))","v":9.8692208249319577},{"$f":"_xlfn.XLOOKUP($AZ13,$Q$8:$U$8,_xlfn.XLOOKUP(BK$8,$P$9:$P$27,$Q$9:$U$27))","v":0},{"$f":"_xlfn.XLOOKUP($AZ13,$Q$8:$U$8,_xlfn.XLOOKUP(BL$8,$P$9:$P$27,$Q$9:$U$27))","v":0.96309563226114514},{"$f":"_xlfn.XLOOKUP($AZ13,$Q$8:$U$8,_xlfn.XLOOKUP(BM$8,$P$9:$P$27,$Q$9:$U$27))","v":0},{"$f":"_xlfn.XLOOKUP($AZ13,$Q$8:$U$8,_xlfn.XLOOKUP(BN$8,$P$9:$P$27,$Q$9:$U$27))","v":0},{"$f":"_xlfn.XLOOKUP($AZ13,$Q$8:$U$8,_xlfn.XLOOKUP(BO$8,$P$9:$P$27,$Q$9:$U$27))","v":0},{"$f":"_xlfn.XLOOKUP($AZ13,$Q$8:$U$8,_xlfn.XLOOKUP(BP$8,$P$9:$P$27,$Q$9:$U$27))","v":0},{"$f":"_xlfn.XLOOKUP($AZ13,$Q$8:$U$8,_xlfn.XLOOKUP(BQ$8,$P$9:$P$27,$Q$9:$U$27))","v":0},{"$f":"_xlfn.XLOOKUP($AZ13,$Q$8:$U$8,_xlfn.XLOOKUP(BR$8,$P$9:$P$27,$Q$9:$U$27))","v":0},{"$f":"_xlfn.XLOOKUP($AZ13,$Q$8:$U$8,_xlfn.XLOOKUP(BS$8,$P$9:$P$27,$Q$9:$U$27))","v":0}]
[null,{"$f":"'Opex costs'!B12","v":"Network Operating Costs"},{"$f":"_xlfn.XLOOKUP($B14,'BBM Costs'!$I$7:$I$25,'BBM Costs'!J$7:J$25)*_xlfn.XLOOKUP($B14,'Control panel'!$E$7:$E$25,'Control panel'!$F$7:$F$25)","v":0},{"$f":"_xlfn.XLOOKUP($B14,'BBM Costs'!$I$7:$I$25,'BBM Costs'!K$7:K$25)*_xlfn.XLOOKUP($B14,'Control panel'!$E$7:$E$25,'Control panel'!$F$7:$F$25)","v":0},{"$f":"_xlfn.XLOOKUP($B14,'BBM Costs'!$I$7:$I$25,'BBM Costs'!L$7:L$25)*_xlfn.XLOOKUP($B14,'Control panel'!$E$7:$E$25,'Control panel'!$F$7:$F$25)","v":0},{"$f":"_xlfn.XLOOKUP($B14,'BBM Costs'!$I$7:$I$25,'BBM Costs'!M$7:M$25)*_xlfn.XLOOKUP($B14,'Control panel'!$E$7:$E$25,'Control panel'!$F$7:$F$25)","v":0},{"$f":"_xlfn.XLOOKUP($B14,'BBM Costs'!$I$7:$I$25,'BBM Costs'!N$7:N$25)*_xlfn.XLOOKUP($B14,'Control panel'!$E$7:$E$25,'Control panel'!$F$7:$F$25)","v":0},null,"Network Operating Costs",{"$f":"C14*_xlfn.XLOOKUP($I14,'Control panel'!$E$7:$E$25,'Control panel'!$H$7:$H$25)","v":0},{"$f":"D14*_xlfn.XLOOKUP($I14,'Control panel'!$E$7:$E$25,'Control panel'!$H$7:$H$25)","v":0},{"$f":"E14*_xlfn.XLOOKUP($I14,'Control panel'!$E$7:$E$25,'Control panel'!$H$7:$H$25)","v":0},{"$f":"F14*_xlfn.XLOOKUP($I14,'Control panel'!$E$7:$E$25,'Control panel'!$H$7:$H$25)","v":0},{"$f":"G14*_xlfn.XLOOKUP($I14,'Control panel'!$E$7:$E$25,'Control panel'!$H$7:$H$25)","v":0},null,"Network Operating Costs",{"$f":"C14*_xlfn.XLOOKUP($P14,'Control panel'!$E$7:$E$25,'Control panel'!$I$7:$I$25)","v":0},{"$f":"D14*_xlfn.XLOOKUP($P14,'Control panel'!$E$7:$E$25,'Control panel'!$I$7:$I$25)","v":0},{"$f":"E14*_xlfn.XLOOKUP($P14,'Control panel'!$E$7:$E$25,'Control panel'!$I$7:$I$25)","v":0},{"$f":"F14*_xlfn.XLOOKUP($P14,'Control panel'!$E$7:$E$25,'Control panel'!$I$7:$I$25)","v":0},{"$f":"G14*_xlfn.XLOOKUP($P14,'Control panel'!$E$7:$E$25,'Control panel'!$I$7:$I$25)","v":0},null,"2025-26",{"$f":"'PTRM Data'!B12","v":"Substation Bays"},{"$f":"_xlfn.XLOOKUP(X14,'Control panel'!$L$7:$L$37,'Control panel'!$P$7:$P$37)","v":1},8.6753906496585937,{"$f":"_xlfn.XLOOKUP(W14,'BBM Costs'!$Q$6:$U$6,_xlfn.XLOOKUP(X14,'BBM Costs'!$P$7:$P$37,'BBM Costs'!$Q$7:$U$37))*_xlfn.XLOOKUP(X14,'Control panel'!$L$7:$L$37,'Control panel'!$M$7:$M$37)","v":0},{"$f":"_xlfn.XLOOKUP(W14,'BBM Costs'!$X$6:$AB$6,_xlfn.XLOOKUP(X14,'BBM Costs'!$W$7:$W$37,'BBM Costs'!$X$7:$AB$37))*_xlfn.XLOOKUP(X14,'Control panel'!$S$7:$S$37,'Control panel'!$T$7:$T$37)","v":0},8.6753906496585937,null,{"$f":"'PTRM Data'!B12","v":"Substation Bays"},{"$f":"'Control panel'!$AA12/SUMPRODUCT('Control panel'!$AA$7:$AA$37,'Control panel'!AB$7:AB$37)*'Control panel'!AB12","v":0.11759693548721259},{"$f":"'Control panel'!$AA12/SUMPRODUCT('Control panel'!$AA$7:$AA$37,'Control panel'!AC$7:AC$37)*'Control panel'!AC12","v":0.11870836646940654},{"$f":"'Control panel'!$AA12/SUMPRODUCT('Control panel'!$AA$7:$AA$37,'Control panel'!AD$7:AD$37)*'Control panel'!AD12","v":0.11869770239413031},{"$f":"'Control panel'!$AA12/SUMPRODUCT('Control panel'!$AA$7:$AA$37,'Control panel'!AE$7:AE$37)*'Control panel'!AE12","v":0},{"$f":"'Control panel'!$AA12/SUMPRODUCT('Control panel'!$AA$7:$AA$37,'Control panel'!AF$7:AF$37)*'Control panel'!AF12","v":0},{"$f":"'Control panel'!$AA12/SUMPRODUCT('Control panel'!$AA$7:$AA$37,'Control panel'!AG$7:AG$37)*'Control panel'!AG12","v":0.11878765811016008},{"$f":"'Control panel'!$AA12/SUMPRODUCT('Control panel'!$AA$7:$AA$37,'Control panel'!AH$7:AH$37)*'Control panel'!AH12","v":0.72327881291891061},{"$f":"'Control panel'!$AA12/SUMPRODUCT('Control panel'!$AA$7:$AA$37,'Control panel'!AI$7:AI$37)*'Control panel'!AI12","v":0.10710255278660283},{"$f":"'Control panel'!$AA12/SUMPRODUCT('Control panel'!$AA$7:$AA$37,'Control panel'!AJ$7:AJ$37)*'Control panel'!AJ12","v":0.11847954691681319},{"$f":"'Control panel'!$AA12/SUMPRODUCT('Control panel'!$AA$7:$AA$37,'Control panel'!AK$7:AK$37)*'Control panel'!AK12","v":0.11751922499161131},{"$f":"'Control panel'!$AA12/SUMPRODUCT('Control panel'!$AA$7:$AA$37,'Control panel'!AL$7:AL$37)*'Control panel'!AL12","v":0.10710255278660283},{"$f":"'Control panel'!$AA12/SUMPRODUCT('Control panel'!$AA$7:$AA$37,'Control panel'!AM$7:AM$37)*'Control panel'!AM12","v":0},{"$f":"'Control panel'!$AA12/SUMPRODUCT('Control panel'!$AA$7:$AA$37,'Control panel'!AN$7:AN$37)*'Control panel'!AN12","v":0.11847954691681319},{"$f":"'Control panel'!$AA12/SUMPRODUCT('Control panel'!$AA$7:$AA$37,'Control panel'!AO$7:AO$37)*'Control panel'!AO12","v":0.11847954691681319},{"$f":"'Control panel'!$AA12/SUMPRODUCT('Control panel'!$AA$7:$AA$37,'Control panel'!AP$7:AP$37)*'Control panel'!AP12","v":0.10710255278660283},{"$f":"'Control panel'!$AA12/SUMPRODUCT('Control panel'!$AA$7:$AA$37,'Control panel'!AQ$7:AQ$37)*'Control panel'!AQ12","v":0.10710255278660283},{"$f":"'Control panel'!$AA12/SUMPRODUCT('Control panel'!$AA$7:$AA$37,'Control panel'!AR$7:AR$37)*'Control panel'!AR12","v":0.10710255278660283},{"$f":"'Control panel'!$AA12/SUMPRODUCT('Control panel'!$AA$7:$AA$37,'Control panel'!AS$7:AS$37)*'Control panel'!AS12","v":0.10710255278660283},{"$f":"'Control panel'!$AA12/SUMPRODUCT('Control panel'!$AA$7:$AA$37,'Control panel'!AT$7:AT$37)*'Control panel'!AT12","v":0.10710255278660283}]
[null,{"$f":"'Opex costs'!B13","v":"Meter Reading"},{"$f":"_xlfn.XLOOKUP($B15,'BBM Costs'!$I$7:$I$25,'BBM Costs'!J$7:J$25)*_xlfn.XLOOKUP($B15,'Control panel'!$E$7:$E$25,'Control panel'!$F$7:$F$25)","v":0},{"$f":"_xlfn.XLOOKUP($B15,'BBM Costs'!$I$7:$I$25,'BBM Costs'!K$7:K$25)*_xlfn.XLOOKUP($B15,'Control panel'!$E$7:$E$25,'Control panel'!$F$7:$F$25)","v":0},{"$f":"_xlfn.XLOOKUP($B15,'BBM Costs'!$I$7:$I$25,'BBM Costs'!L$7:L$25)*_xlfn.XLOOKUP($B15,'Control panel'!$E$7:$E$25,'Control panel'!$F$7:$F$25)","v":0},{"$f":"_xlfn.XLOOKUP($B15,'BBM Costs'!$I$7:$I$25,'BBM Costs'!M$7:M$25)*_xlfn.XLOOKUP($B15,'Control panel'!$E$7:$E$25,'Control panel'!$F$7:$F$25)","v":0},{"$f":"_xlfn.XLOOKUP($B15,'BBM Costs'!$I$7:$I$25,'BBM Costs'!N$7:N$25)*_xlfn.XLOOKUP($B15,'Control panel'!$E$7:$E$25,'Control panel'!$F$7:$F$25)","v":0},null,"Meter Reading",{"$f":"C15*_xlfn.XLOOKUP($I15,'Control panel'!$E$7:$E$25,'Control panel'!$H$7:$H$25)","v":0},{"$f":"D15*_xlfn.XLOOKUP($I15,'Control panel'!$E$7:$E$25,'Control panel'!$H$7:$H$25)","v":0},{"$f":"E15*_xlfn.XLOOKUP($I15,'Control panel'!$E$7:$E$25,'Control panel'!$H$7:$H$25)","v":0},{"$f":"F15*_xlfn.XLOOKUP($I15,'Control panel'!$E$7:$E$25,'Control panel'!$H$7:$H$25)","v":0},{"$f":"G15*_xlfn.XLOOKUP($I15,'Control panel'!$E$7:$E$25,'Control panel'!$H$7:$H$25)","v":0},null,"Meter Reading",{"$f":"C15*_xlfn.XLOOKUP($P15,'Control panel'!$E$7:$E$25,'Control panel'!$I$7:$I$25)","v":0},{"$f":"D15*_xlfn.XLOOKUP($P15,'Control panel'!$E$7:$E$25,'Control panel'!$I$7:$I$25)","v":0},{"$f":"E15*_xlfn.XLOOKUP($P15,'Control panel'!$E$7:$E$25,'Control panel'!$I$7:$I$25)","v":0},{"$f":"F15*_xlfn.XLOOKUP($P15,'Control panel'!$E$7:$E$25,'Control panel'!$I$7:$I$25)","v":0},{"$f":"G15*_xlfn.XLOOKUP($P15,'Control panel'!$E$7:$E$25,'Control panel'!$I$7:$I$25)","v":0},null,"2025-26",{"$f":"'PTRM Data'!B13","v":"Substation Establishment"},{"$f":"_xlfn.XLOOKUP(X15,'Control panel'!$L$7:$L$37,'Control panel'!$P$7:$P$37)","v":1},2.1898146716893008,{"$f":"_xlfn.XLOOKUP(W15,'BBM Costs'!$Q$6:$U$6,_xlfn.XLOOKUP(X15,'BBM Costs'!$P$7:$P$37,'BBM Costs'!$Q$7:$U$37))*_xlfn.XLOOKUP(X15,'Control panel'!$L$7:$L$37,'Control panel'!$M$7:$M$37)","v":0},{"$f":"_xlfn.XLOOKUP(W15,'BBM Costs'!$X$6:$AB$6,_xlfn.XLOOKUP(X15,'BBM Costs'!$W$7:$W$37,'BBM Costs'!$X$7:$AB$37))*_xlfn.XLOOKUP(X15,'Control panel'!$S$7:$S$37,'Control panel'!$T$7:$T$37)","v":0},2.1898146716893008,null,{"$f":"'PTRM Data'!B13","v":"Substation Establishment"},{"$f":"'Control panel'!$AA13/SUMPRODUCT('Control panel'!$AA$7:$AA$37,'Control panel'!AB$7:AB$37)*'Control panel'!AB13","v":2.968344655300709E-2},{"$f":"'Control panel'!$AA13/SUMPRODUCT('Control panel'!$AA$7:$AA$37,'Control panel'!AC$7:AC$37)*'Control panel'!AC13","v":2.9963990446609638E-2},{"$f":"'Control panel'!$AA13/SUMPRODUCT('Control panel'!$AA$7:$AA$37,'Control panel'!AD$7:AD$37)*'Control panel'!AD13","v":2.9961298654453766E-2},{"$f":"'Control panel'!$AA13/SUMPRODUCT('Control panel'!$AA$7:$AA$37,'Control panel'!AE$7:AE$37)*'Control panel'!AE13","v":5.1599808840982954E-2},{"$f":"'Control panel'!$AA13/SUMPRODUCT('Control panel'!$AA$7:$AA$37,'Control panel'!AF$7:AF$37)*'Control panel'!AF13","v":0},{"$f":"'Control panel'!$AA13/SUMPRODUCT('Control panel'!$AA$7:$AA$37,'Control panel'!AG$7:AG$37)*'Control panel'!AG13","v":2.9984004991807239E-2},{"$f":"'Control panel'!$AA13/SUMPRODUCT('Control panel'!$AA$7:$AA$37,'Control panel'!AH$7:AH$37)*'Control panel'!AH13","v":0},{"$f":"'Control panel'!$AA13/SUMPRODUCT('Control panel'!$AA$7:$AA$37,'Control panel'!AI$7:AI$37)*'Control panel'!AI13","v":2.7034487660415663E-2},{"$f":"'Control panel'!$AA13/SUMPRODUCT('Control panel'!$AA$7:$AA$37,'Control panel'!AJ$7:AJ$37)*'Control panel'!AJ13","v":2.9906232538790465E-2},{"$f":"'Control panel'!$AA13/SUMPRODUCT('Control panel'!$AA$7:$AA$37,'Control panel'!AK$7:AK$37)*'Control panel'!AK13","v":2.9663831115468421E-2},{"$f":"'Control panel'!$AA13/SUMPRODUCT('Control panel'!$AA$7:$AA$37,'Control panel'!AL$7:AL$37)*'Control panel'!AL13","v":2.7034487660415663E-2},{"$f":"'Control panel'!$AA13/SUMPRODUCT('Control panel'!$AA$7:$AA$37,'Control panel'!AM$7:AM$37)*'Control panel'!AM13","v":0},{"$f":"'Control panel'!$AA13/SUMPRODUCT('Control panel'!$AA$7:$AA$37,'Control panel'!AN$7:AN$37)*'Control panel'!AN13","v":2.9906232538790465E-2},{"$f":"'Control panel'!$AA13/SUMPRODUCT('Control panel'!$AA$7:$AA$37,'Control panel'!AO$7:AO$37)*'Control panel'!AO13","v":2.9906232538790465E-2},{"$f":"'Control panel'!$AA13/SUMPRODUCT('Control panel'!$AA$7:$AA$37,'Control panel'!AP$7:AP$37)*'Control panel'!AP13","v":2.7034487660415663E-2},{"$f":"'Control panel'!$AA13/SUMPRODUCT('Control panel'!$AA$7:$AA$37,'Control panel'!AQ$7:AQ$37)*'Control panel'!AQ13","v":2.7034487660415663E-2},{"$f":"'Control panel'!$AA13/SUMPRODUCT('Control panel'!$AA$7:$AA$37,'Control panel'!AR$7:AR$37)*'Control panel'!AR13","v":2.7034487660415663E-2},{"$f":"'Control panel'!$AA13/SUMPRODUCT('Control panel'!$AA$7:$AA$37,'Control panel'!AS$7:AS$37)*'Control panel'!AS13","v":2.7034487660415663E-2},{"$f":"'Control panel'!$AA13/SUMPRODUCT('Control panel'!$AA$7:$AA$37,'Control panel'!AT$7:AT$37)*'Control panel'!AT13","v":2.7034487660415663E-2}]
[null,{"$f":"'Opex costs'!B14","v":"Customer Service (incl Call Centre)"},{"$f":"_xlfn.XLOOKUP($B16,'BBM Costs'!$I$7:$I$25,'BBM Costs'!J$7:J$25)*_xlfn.XLOOKUP($B16,'Control panel'!$E$7:$E$25,'Control panel'!$F$7:$F$25)","v":12.835568464608833},{"$f":"_xlfn.XLOOKUP($B16,'BBM Costs'!$I$7:$I$25,'BBM Costs'!K$7:K$25)*_xlfn.XLOOKUP($B16,'Control panel'!$E$7:$E$25,'Control panel'!$F$7:$F$25)","v":13.339633191686408},{"$f":"_xlfn.XLOOKUP($B16,'BBM Costs'!$I$7:$I$25,'BBM Costs'!L$7:L$25)*_xlfn.XLOOKUP($B16,'Control panel'!$E$7:$E$25,'Control panel'!$F$7:$F$25)","v":13.818096967374109},{"$f":"_xlfn.XLOOKUP($B16,'BBM Costs'!$I$7:$I$25,'BBM Costs'!M$7:M$25)*_xlfn.XLOOKUP($B16,'Control panel'!$E$7:$E$25,'Control panel'!$F$7:$F$25)","v":14.041460833237785},{"$f":"_xlfn.XLOOKUP($B16,'BBM Costs'!$I$7:$I$25,'BBM Costs'!N$7:N$25)*_xlfn.XLOOKUP($B16,'Control panel'!$E$7:$E$25,'Control panel'!$F$7:$F$25)","v":14.599121496788035},null,"Customer Service (incl Call Centre)",{"$f":"C16*_xlfn.XLOOKUP($I16,'Control panel'!$E$7:$E$25,'Control panel'!$H$7:$H$25)","v":12.835568464608833},{"$f":"D16*_xlfn.XLOOKUP($I16,'Control panel'!$E$7:$E$25,'Control panel'!$H$7:$H$25)","v":13.339633191686408},{"$f":"E16*_xlfn.XLOOKUP($I16,'Control panel'!$E$7:$E$25,'Control panel'!$H$7:$H$25)","v":13.818096967374109},{"$f":"F16*_xlfn.XLOOKUP($I16,'Control panel'!$E$7:$E$25,'Control panel'!$H$7:$H$25)","v":14.041460833237785},{"$f":"G16*_xlfn.XLOOKUP($I16,'Control panel'!$E$7:$E$25,'Control panel'!$H$7:$H$25)","v":14.599121496788035},null,"Customer Service (incl Call Centre)",{"$f":"C16*_xlfn.XLOOKUP($P16,'Control panel'!$E$7:$E$25,'Control panel'!$I$7:$I$25)","v":0},{"$f":"D16*_xlfn.XLOOKUP($P16,'Control panel'!$E$7:$E$25,'Control panel'!$I$7:$I$25)","v":0},{"$f":"E16*_xlfn.XLOOKUP($P16,'Control panel'!$E$7:$E$25,'Control panel'!$I$7:$I$25)","v":0},{"$f":"F16*_xlfn.XLOOKUP($P16,'Control panel'!$E$7:$E$25,'Control panel'!$I$7:$I$25)","v":0},{"$f":"G16*_xlfn.XLOOKUP($P16,'Control panel'!$E$7:$E$25,'Control panel'!$I$7:$I$25)","v":0},null,"2025-26",{"$f":"'PTRM Data'!B14","v":"Distribution Substation Switchgear"},{"$f":"_xlfn.XLOOKUP(X16,'Control panel'!$L$7:$L$37,'Control panel'!$P$7:$P$37)","v":0.57000000000000006},3.2962375493429787,{"$f":"_xlfn.XLOOKUP(W16,'BBM Costs'!$Q$6:$U$6,_xlfn.XLOOKUP(X16,'BBM Costs'!$P$7:$P$37,'BBM Costs'!$Q$7:$U$37))*_xlfn.XLOOKUP(X16,'Control panel'!$L$7:$L$37,'Control panel'!$M$7:$M$37)","v":0.79879232930829736},{"$f":"_xlfn.XLOOKUP(W16,'BBM Costs'!$X$6:$AB$6,_xlfn.XLOOKUP(X16,'BBM Costs'!$W$7:$W$37,'BBM Costs'!$X$7:$AB$37))*_xlfn.XLOOKUP(X16,'Control panel'!$S$7:$S$37,'Control panel'!$T$7:$T$37)","v":16.949715257468373},21.044745136119651,null,{"$f":"'PTRM Data'!B14","v":"Distribution Substation Switchgear"},{"$f":"'Control panel'!$AA14/SUMPRODUCT('Control panel'!$AA$7:$AA$37,'Control panel'!AB$7:AB$37)*'Control panel'!AB14","v":4.4681265673709857E-2},{"$f":"'Control panel'!$AA14/SUMPRODUCT('Control panel'!$AA$7:$AA$37,'Control panel'!AC$7:AC$37)*'Control panel'!AC14","v":4.510355680559739E-2},{"$f":"'Control panel'!$AA14/SUMPRODUCT('Control panel'!$AA$7:$AA$37,'Control panel'!AD$7:AD$37)*'Control panel'!AD14","v":4.509950496208117E-2},{"$f":"'Control panel'!$AA14/SUMPRODUCT('Control panel'!$AA$7:$AA$37,'Control panel'!AE$7:AE$37)*'Control panel'!AE14","v":0},{"$f":"'Control panel'!$AA14/SUMPRODUCT('Control panel'!$AA$7:$AA$37,'Control panel'!AF$7:AF$37)*'Control panel'!AF14","v":0},{"$f":"'Control panel'!$AA14/SUMPRODUCT('Control panel'!$AA$7:$AA$37,'Control panel'!AG$7:AG$37)*'Control panel'!AG14","v":4.5133683873548054E-2},{"$f":"'Control panel'!$AA14/SUMPRODUCT('Control panel'!$AA$7:$AA$37,'Control panel'!AH$7:AH$37)*'Control panel'!AH14","v":0},{"$f":"'Control panel'!$AA14/SUMPRODUCT('Control panel'!$AA$7:$AA$37,'Control panel'!AI$7:AI$37)*'Control panel'!AI14","v":4.0693897298974296E-2},{"$f":"'Control panel'!$AA14/SUMPRODUCT('Control panel'!$AA$7:$AA$37,'Control panel'!AJ$7:AJ$37)*'Control panel'!AJ14","v":4.5016616213324263E-2},{"$f":"'Control panel'!$AA14/SUMPRODUCT('Control panel'!$AA$7:$AA$37,'Control panel'!AK$7:AK$37)*'Control panel'!AK14","v":4.4651739366028363E-2},{"$f":"'Control panel'!$AA14/SUMPRODUCT('Control panel'!$AA$7:$AA$37,'Control panel'!AL$7:AL$37)*'Control panel'!AL14","v":4.0693897298974296E-2},{"$f":"'Control panel'!$AA14/SUMPRODUCT('Control panel'!$AA$7:$AA$37,'Control panel'!AM$7:AM$37)*'Control panel'!AM14","v":0},{"$f":"'Control panel'!$AA14/SUMPRODUCT('Control panel'!$AA$7:$AA$37,'Control panel'!AN$7:AN$37)*'Control panel'!AN14","v":4.5016616213324263E-2},{"$f":"'Control panel'!$AA14/SUMPRODUCT('Control panel'!$AA$7:$AA$37,'Control panel'!AO$7:AO$37)*'Control panel'!AO14","v":4.5016616213324263E-2},{"$f":"'Control panel'!$AA14/SUMPRODUCT('Control panel'!$AA$7:$AA$37,'Control panel'!AP$7:AP$37)*'Control panel'!AP14","v":4.0693897298974296E-2},{"$f":"'Control panel'!$AA14/SUMPRODUCT('Control panel'!$AA$7:$AA$37,'Control panel'!AQ$7:AQ$37)*'Control panel'!AQ14","v":4.0693897298974296E-2},{"$f":"'Control panel'!$AA14/SUMPRODUCT('Control panel'!$AA$7:$AA$37,'Control panel'!AR$7:AR$37)*'Control panel'!AR14","v":4.0693897298974296E-2},{"$f":"'Control panel'!$AA14/SUMPRODUCT('Control panel'!$AA$7:$AA$37,'Control panel'!AS$7:AS$37)*'Control panel'!AS14","v":4.0693897298974296E-2},{"$f":"'Control panel'!$AA14/SUMPRODUCT('Control panel'!$AA$7:$AA$37,'Control panel'!AT$7:AT$37)*'Control panel'!AT14","v":4.0693897298974296E-2}]
[null,{"$f":"'Opex costs'!B15","v":"Other Operating Costs"},{"$f":"_xlfn.XLOOKUP($B17,'BBM Costs'!$I$7:$I$25,'BBM Costs'!J$7:J$25)*_xlfn.XLOOKUP($B17,'Control panel'!$E$7:$E$25,'Control panel'!$F$7:$F$25)","v":25.500328967263012},{"$f":"_xlfn.XLOOKUP($B17,'BBM Costs'!$I$7:$I$25,'BBM Costs'!K$7:K$25)*_xlfn.XLOOKUP($B17,'Control panel'!$E$7:$E$25,'Control panel'!$F$7:$F$25)","v":26.50175063368264},{"$f":"_xlfn.XLOOKUP($B17,'BBM Costs'!$I$7:$I$25,'BBM Costs'!L$7:L$25)*_xlfn.XLOOKUP($B17,'Control panel'!$E$7:$E$25,'Control panel'!$F$7:$F$25)","v":27.452311079259832},{"$f":"_xlfn.XLOOKUP($B17,'BBM Costs'!$I$7:$I$25,'BBM Costs'!M$7:M$25)*_xlfn.XLOOKUP($B17,'Control panel'!$E$7:$E$25,'Control panel'!$F$7:$F$25)","v":27.896066420102617},{"$f":"_xlfn.XLOOKUP($B17,'BBM Costs'!$I$7:$I$25,'BBM Costs'!N$7:N$25)*_xlfn.XLOOKUP($B17,'Control panel'!$E$7:$E$25,'Control panel'!$F$7:$F$25)","v":29.003966737244269},null,"Other Operating Costs",{"$f":"C17*_xlfn.XLOOKUP($I17,'Control panel'!$E$7:$E$25,'Control panel'!$H$7:$H$25)","v":0},{"$f":"D17*_xlfn.XLOOKUP($I17,'Control panel'!$E$7:$E$25,'Control panel'!$H$7:$H$25)","v":0},{"$f":"E17*_xlfn.XLOOKUP($I17,'Control panel'!$E$7:$E$25,'Control panel'!$H$7:$H$25)","v":0},{"$f":"F17*_xlfn.XLOOKUP($I17,'Control panel'!$E$7:$E$25,'Control panel'!$H$7:$H$25)","v":0},{"$f":"G17*_xlfn.XLOOKUP($I17,'Control panel'!$E$7:$E$25,'Control panel'!$H$7:$H$25)","v":0},null,"Other Operating Costs",{"$f":"C17*_xlfn.XLOOKUP($P17,'Control panel'!$E$7:$E$25,'Control panel'!$I$7:$I$25)","v":25.500328967263012},{"$f":"D17*_xlfn.XLOOKUP($P17,'Control panel'!$E$7:$E$25,'Control panel'!$I$7:$I$25)","v":26.50175063368264},{"$f":"E17*_xlfn.XLOOKUP($P17,'Control panel'!$E$7:$E$25,'Control panel'!$I$7:$I$25)","v":27.452311079259832},{"$f":"F17*_xlfn.XLOOKUP($P17,'Control panel'!$E$7:$E$25,'Control panel'!$I$7:$I$25)","v":27.896066420102617},{"$f":"G17*_xlfn.XLOOKUP($P17,'Control panel'!$E$7:$E$25,'Control panel'!$I$7:$I$25)","v":29.003966737244269},null,"2025-26",{"$f":"'PTRM Data'!B15","v":"Zone Transformers"},{"$f":"_xlfn.XLOOKUP(X17,'Control panel'!$L$7:$L$37,'Control panel'!$P$7:$P$37)","v":1},1.7672214847979193,{"$f":"_xlfn.XLOOKUP(W17,'BBM Costs'!$Q$6:$U$6,_xlfn.XLOOKUP(X17,'BBM Costs'!$P$7:$P$37,'BBM Costs'!$Q$7:$U$37))*_xlfn.XLOOKUP(X17,'Control panel'!$L$7:$L$37,'Control panel'!$M$7:$M$37)","v":0},{"$f":"_xlfn.XLOOKUP(W17,'BBM Costs'!$X$6:$AB$6,_xlfn.XLOOKUP(X17,'BBM Costs'!$W$7:$W$37,'BBM Costs'!$X$7:$AB$37))*_xlfn.XLOOKUP(X17,'Control panel'!$S$7:$S$37,'Control panel'!$T$7:$T$37)","v":0},1.7672214847979193,null,{"$f":"'PTRM Data'!B15","v":"Zone Transformers"},{"$f":"'Control panel'!$AA15/SUMPRODUCT('Control panel'!$AA$7:$AA$37,'Control panel'!AB$7:AB$37)*'Control panel'!AB15","v":2.3955097739324901E-2},{"$f":"'Control panel'!$AA15/SUMPRODUCT('Control panel'!$AA$7:$AA$37,'Control panel'!AC$7:AC$37)*'Control panel'!AC15","v":2.4181501919830654E-2},{"$f":"'Control panel'!$AA15/SUMPRODUCT('Control panel'!$AA$7:$AA$37,'Control panel'!AD$7:AD$37)*'Control panel'!AD15","v":2.4179329593107316E-2},{"$f":"'Control panel'!$AA15/SUMPRODUCT('Control panel'!$AA$7:$AA$37,'Control panel'!AE$7:AE$37)*'Control panel'!AE15","v":0},{"$f":"'Control panel'!$AA15/SUMPRODUCT('Control panel'!$AA$7:$AA$37,'Control panel'!AF$7:AF$37)*'Control panel'!AF15","v":0},{"$f":"'Control panel'!$AA15/SUMPRODUCT('Control panel'!$AA$7:$AA$37,'Control panel'!AG$7:AG$37)*'Control panel'!AG15","v":2.4197654032947317E-2},{"$f":"'Control panel'!$AA15/SUMPRODUCT('Control panel'!$AA$7:$AA$37,'Control panel'!AH$7:AH$37)*'Control panel'!AH15","v":0},{"$f":"'Control panel'!$AA15/SUMPRODUCT('Control panel'!$AA$7:$AA$37,'Control panel'!AI$7:AI$37)*'Control panel'!AI15","v":2.1817338262299042E-2},{"$f":"'Control panel'!$AA15/SUMPRODUCT('Control panel'!$AA$7:$AA$37,'Control panel'!AJ$7:AJ$37)*'Control panel'!AJ15","v":2.4134890205636462E-2},{"$f":"'Control panel'!$AA15/SUMPRODUCT('Control panel'!$AA$7:$AA$37,'Control panel'!AK$7:AK$37)*'Control panel'!AK15","v":2.3939267713569662E-2},{"$f":"'Control panel'!$AA15/SUMPRODUCT('Control panel'!$AA$7:$AA$37,'Control panel'!AL$7:AL$37)*'Control panel'!AL15","v":2.1817338262299042E-2},{"$f":"'Control panel'!$AA15/SUMPRODUCT('Control panel'!$AA$7:$AA$37,'Control panel'!AM$7:AM$37)*'Control panel'!AM15","v":0},{"$f":"'Control panel'!$AA15/SUMPRODUCT('Control panel'!$AA$7:$AA$37,'Control panel'!AN$7:AN$37)*'Control panel'!AN15","v":2.4134890205636462E-2},{"$f":"'Control panel'!$AA15/SUMPRODUCT('Control panel'!$AA$7:$AA$37,'Control panel'!AO$7:AO$37)*'Control panel'!AO15","v":2.4134890205636462E-2},{"$f":"'Control panel'!$AA15/SUMPRODUCT('Control panel'!$AA$7:$AA$37,'Control panel'!AP$7:AP$37)*'Control panel'!AP15","v":2.1817338262299042E-2},{"$f":"'Control panel'!$AA15/SUMPRODUCT('Control panel'!$AA$7:$AA$37,'Control panel'!AQ$7:AQ$37)*'Control panel'!AQ15","v":2.1817338262299042E-2},{"$f":"'Control panel'!$AA15/SUMPRODUCT('Control panel'!$AA$7:$AA$37,'Control panel'!AR$7:AR$37)*'Control panel'!AR15","v":2.1817338262299042E-2},{"$f":"'Control panel'!$AA15/SUMPRODUCT('Control panel'!$AA$7:$AA$37,'Control panel'!AS$7:AS$37)*'Control panel'!AS15","v":2.1817338262299042E-2},{"$f":"'Control panel'!$AA15/SUMPRODUCT('Control panel'!$AA$7:$AA$37,'Control panel'!AT$7:AT$37)*'Control panel'!AT15","v":2.1817338262299042E-2}]
[null,{"$f":"'Opex costs'!B16","v":"Training"},{"$f":"_xlfn.XLOOKUP($B18,'BBM Costs'!$I$7:$I$25,'BBM Costs'!J$7:J$25)*_xlfn.XLOOKUP($B18,'Control panel'!$E$7:$E$25,'Control panel'!$F$7:$F$25)","v":15.222864983435931},{"$f":"_xlfn.XLOOKUP($B18,'BBM Costs'!$I$7:$I$25,'BBM Costs'!K$7:K$25)*_xlfn.XLOOKUP($B18,'Control panel'!$E$7:$E$25,'Control panel'!$F$7:$F$25)","v":15.820681068042688},{"$f":"_xlfn.XLOOKUP($B18,'BBM Costs'!$I$7:$I$25,'BBM Costs'!L$7:L$25)*_xlfn.XLOOKUP($B18,'Control panel'!$E$7:$E$25,'Control panel'!$F$7:$F$25)","v":16.388134662080358},{"$f":"_xlfn.XLOOKUP($B18,'BBM Costs'!$I$7:$I$25,'BBM Costs'!M$7:M$25)*_xlfn.XLOOKUP($B18,'Control panel'!$E$7:$E$25,'Control panel'!$F$7:$F$25)","v":16.65304213241145},{"$f":"_xlfn.XLOOKUP($B18,'BBM Costs'!$I$7:$I$25,'BBM Costs'!N$7:N$25)*_xlfn.XLOOKUP($B18,'Control panel'!$E$7:$E$25,'Control panel'!$F$7:$F$25)","v":17.314422499880624},null,"Training",{"$f":"C18*_xlfn.XLOOKUP($I18,'Control panel'!$E$7:$E$25,'Control panel'!$H$7:$H$25)","v":6.5458319428774505},{"$f":"D18*_xlfn.XLOOKUP($I18,'Control panel'!$E$7:$E$25,'Control panel'!$H$7:$H$25)","v":6.802892859258356},{"$f":"E18*_xlfn.XLOOKUP($I18,'Control panel'!$E$7:$E$25,'Control panel'!$H$7:$H$25)","v":7.0468979046945535},{"$f":"F18*_xlfn.XLOOKUP($I18,'Control panel'!$E$7:$E$25,'Control panel'!$H$7:$H$25)","v":7.1608081169369235},{"$f":"G18*_xlfn.XLOOKUP($I18,'Control panel'!$E$7:$E$25,'Control panel'!$H$7:$H$25)","v":7.4452016749486685},null,"Training",{"$f":"C18*_xlfn.XLOOKUP($P18,'Control panel'!$E$7:$E$25,'Control panel'!$I$7:$I$25)","v":8.6770330405584826},{"$f":"D18*_xlfn.XLOOKUP($P18,'Control panel'!$E$7:$E$25,'Control panel'!$I$7:$I$25)","v":9.0177882087843333},{"$f":"E18*_xlfn.XLOOKUP($P18,'Control panel'!$E$7:$E$25,'Control panel'!$I$7:$I$25)","v":9.3412367573858042},{"$f":"F18*_xlfn.XLOOKUP($P18,'Control panel'!$E$7:$E$25,'Control panel'!$I$7:$I$25)","v":9.4922340154745282},{"$f":"G18*_xlfn.XLOOKUP($P18,'Control panel'!$E$7:$E$25,'Control panel'!$I$7:$I$25)","v":9.8692208249319577},null,"2025-26",{"$f":"'PTRM Data'!B16","v":"Distribution Transformers"},{"$f":"_xlfn.XLOOKUP(X18,'Control panel'!$L$7:$L$37,'Control panel'!$P$7:$P$37)","v":0.57000000000000006},8.4288607271373248,{"$f":"_xlfn.XLOOKUP(W18,'BBM Costs'!$Q$6:$U$6,_xlfn.XLOOKUP(X18,'BBM Costs'!$P$7:$P$37,'BBM Costs'!$Q$7:$U$37))*_xlfn.XLOOKUP(X18,'Control panel'!$L$7:$L$37,'Control panel'!$M$7:$M$37)","v":11.004894859358995},{"$f":"_xlfn.XLOOKUP(W18,'BBM Costs'!$X$6:$AB$6,_xlfn.XLOOKUP(X18,'BBM Costs'!$W$7:$W$37,'BBM Costs'!$X$7:$AB$37))*_xlfn.XLOOKUP(X18,'Control panel'!$S$7:$S$37,'Control panel'!$T$7:$T$37)","v":43.342382680614861},62.776138267111179,null,{"$f":"'PTRM Data'!B16","v":"Distribution Transformers"},{"$f":"'Control panel'!$AA16/SUMPRODUCT('Control panel'!$AA$7:$AA$37,'Control panel'!AB$7:AB$37)*'Control panel'!AB16","v":0.11425516512030214},{"$f":"'Control panel'!$AA16/SUMPRODUCT('Control panel'!$AA$7:$AA$37,'Control panel'!AC$7:AC$37)*'Control panel'!AC16","v":0.1153350123957798},{"$f":"'Control panel'!$AA16/SUMPRODUCT('Control panel'!$AA$7:$AA$37,'Control panel'!AD$7:AD$37)*'Control panel'!AD16","v":0.11532465136318577},{"$f":"'Control panel'!$AA16/SUMPRODUCT('Control panel'!$AA$7:$AA$37,'Control panel'!AE$7:AE$37)*'Control panel'!AE16","v":0},{"$f":"'Control panel'!$AA16/SUMPRODUCT('Control panel'!$AA$7:$AA$37,'Control panel'!AF$7:AF$37)*'Control panel'!AF16","v":0},{"$f":"'Control panel'!$AA16/SUMPRODUCT('Control panel'!$AA$7:$AA$37,'Control panel'!AG$7:AG$37)*'Control panel'!AG16","v":0.11541205079367189},{"$f":"'Control panel'!$AA16/SUMPRODUCT('Control panel'!$AA$7:$AA$37,'Control panel'!AH$7:AH$37)*'Control panel'!AH16","v":0},{"$f":"'Control panel'!$AA16/SUMPRODUCT('Control panel'!$AA$7:$AA$37,'Control panel'!AI$7:AI$37)*'Control panel'!AI16","v":0.10405900292163503},{"$f":"'Control panel'!$AA16/SUMPRODUCT('Control panel'!$AA$7:$AA$37,'Control panel'!AJ$7:AJ$37)*'Control panel'!AJ16","v":0.11511269524392552},{"$f":"'Control panel'!$AA16/SUMPRODUCT('Control panel'!$AA$7:$AA$37,'Control panel'!AK$7:AK$37)*'Control panel'!AK16","v":0.11417966293591511},{"$f":"'Control panel'!$AA16/SUMPRODUCT('Control panel'!$AA$7:$AA$37,'Control panel'!AL$7:AL$37)*'Control panel'!AL16","v":0.10405900292163503},{"$f":"'Control panel'!$AA16/SUMPRODUCT('Control panel'!$AA$7:$AA$37,'Control panel'!AM$7:AM$37)*'Control panel'!AM16","v":0},{"$f":"'Control panel'!$AA16/SUMPRODUCT('Control panel'!$AA$7:$AA$37,'Control panel'!AN$7:AN$37)*'Control panel'!AN16","v":0.11511269524392552},{"$f":"'Control panel'!$AA16/SUMPRODUCT('Control panel'!$AA$7:$AA$37,'Control panel'!AO$7:AO$37)*'Control panel'!AO16","v":0.11511269524392552},{"$f":"'Control panel'!$AA16/SUMPRODUCT('Control panel'!$AA$7:$AA$37,'Control panel'!AP$7:AP$37)*'Control panel'!AP16","v":0.10405900292163503},{"$f":"'Control panel'!$AA16/SUMPRODUCT('Control panel'!$AA$7:$AA$37,'Control panel'!AQ$7:AQ$37)*'Control panel'!AQ16","v":0.10405900292163503},{"$f":"'Control panel'!$AA16/SUMPRODUCT('Control panel'!$AA$7:$AA$37,'Control panel'!AR$7:AR$37)*'Control panel'!AR16","v":0.10405900292163503},{"$f":"'Control panel'!$AA16/SUMPRODUCT('Control panel'!$AA$7:$AA$37,'Control panel'!AS$7:AS$37)*'Control panel'!AS16","v":0.10405900292163503},{"$f":"'Control panel'!$AA16/SUMPRODUCT('Control panel'!$AA$7:$AA$37,'Control panel'!AT$7:AT$37)*'Control panel'!AT16","v":0.10405900292163503}]
[null,{"$f":"'Opex costs'!B17","v":"Debt raising costs"},{"$f":"_xlfn.XLOOKUP($B19,'BBM Costs'!$I$7:$I$25,'BBM Costs'!J$7:J$25)*_xlfn.XLOOKUP($B19,'Control panel'!$E$7:$E$25,'Control panel'!$F$7:$F$25)","v":0},{"$f":"_xlfn.XLOOKUP($B19,'BBM Costs'!$I$7:$I$25,'BBM Costs'!K$7:K$25)*_xlfn.XLOOKUP($B19,'Control panel'!$E$7:$E$25,'Control panel'!$F$7:$F$25)","v":0},{"$f":"_xlfn.XLOOKUP($B19,'BBM Costs'!$I$7:$I$25,'BBM Costs'!L$7:L$25)*_xlfn.XLOOKUP($B19,'Control panel'!$E$7:$E$25,'Control panel'!$F$7:$F$25)","v":0},{"$f":"_xlfn.XLOOKUP($B19,'BBM Costs'!$I$7:$I$25,'BBM Costs'!M$7:M$25)*_xlfn.XLOOKUP($B19,'Control panel'!$E$7:$E$25,'Control panel'!$F$7:$F$25)","v":0},{"$f":"_xlfn.XLOOKUP($B19,'BBM Costs'!$I$7:$I$25,'BBM Costs'!N$7:N$25)*_xlfn.XLOOKUP($B19,'Control panel'!$E$7:$E$25,'Control panel'!$F$7:$F$25)","v":0},null,"Debt raising costs",{"$f":"C19*_xlfn.XLOOKUP($I19,'Control panel'!$E$7:$E$25,'Control panel'!$H$7:$H$25)","v":0},{"$f":"D19*_xlfn.XLOOKUP($I19,'Control panel'!$E$7:$E$25,'Control panel'!$H$7:$H$25)","v":0},{"$f":"E19*_xlfn.XLOOKUP($I19,'Control panel'!$E$7:$E$25,'Control panel'!$H$7:$H$25)","v":0},{"$f":"F19*_xlfn.XLOOKUP($I19,'Control panel'!$E$7:$E$25,'Control panel'!$H$7:$H$25)","v":0},{"$f":"G19*_xlfn.XLOOKUP($I19,'Control panel'!$E$7:$E$25,'Control panel'!$H$7:$H$25)","v":0},null,"Debt raising costs",{"$f":"C19*_xlfn.XLOOKUP($P19,'Control panel'!$E$7:$E$25,'Control panel'!$I$7:$I$25)","v":0},{"$f":"D19*_xlfn.XLOOKUP($P19,'Control panel'!$E$7:$E$25,'Control panel'!$I$7:$I$25)","v":0},{"$f":"E19*_xlfn.XLOOKUP($P19,'Control panel'!$E$7:$E$25,'Control panel'!$I$7:$I$25)","v":0},{"$f":"F19*_xlfn.XLOOKUP($P19,'Control panel'!$E$7:$E$25,'Control panel'!$I$7:$I$25)","v":0},{"$f":"G19*_xlfn.XLOOKUP($P19,'Control panel'!$E$7:$E$25,'Control panel'!$I$7:$I$25)","v":0},null,"2025-26",{"$f":"'PTRM Data'!B17","v":"Low Voltage Services"},{"$f":"_xlfn.XLOOKUP(X19,'Control panel'!$L$7:$L$37,'Control panel'!$P$7:$P$37)","v":0},2.7484522195923415,{"$f":"_xlfn.XLOOKUP(W19,'BBM Costs'!$Q$6:$U$6,_xlfn.XLOOKUP(X19,'BBM Costs'!$P$7:$P$37,'BBM Costs'!$Q$7:$U$37))*_xlfn.XLOOKUP(X19,'Control panel'!$L$7:$L$37,'Control panel'!$M$7:$M$37)","v":0},{"$f":"_xlfn.XLOOKUP(W19,'BBM Costs'!$X$6:$AB$6,_xlfn.XLOOKUP(X19,'BBM Costs'!$W$7:$W$37,'BBM Costs'!$X$7:$AB$37))*_xlfn.XLOOKUP(X19,'Control panel'!$S$7:$S$37,'Control panel'!$T$7:$T$37)","v":0},2.7484522195923415,null,{"$f":"'PTRM Data'!B17","v":"Low Voltage Services"},{"$f":"'Control panel'!$AA17/SUMPRODUCT('Control panel'!$AA$7:$AA$37,'Control panel'!AB$7:AB$37)*'Control panel'!AB17","v":2.6224862554668826E-2},{"$f":"'Control panel'!$AA17/SUMPRODUCT('Control panel'!$AA$7:$AA$37,'Control panel'!AC$7:AC$37)*'Control panel'!AC17","v":2.6472718713728399E-2},{"$f":"'Control panel'!$AA17/SUMPRODUCT('Control panel'!$AA$7:$AA$37,'Control panel'!AD$7:AD$37)*'Control panel'!AD17","v":2.6470340557297429E-2},{"$f":"'Control panel'!$AA17/SUMPRODUCT('Control panel'!$AA$7:$AA$37,'Control panel'!AE$7:AE$37)*'Control panel'!AE17","v":0},{"$f":"'Control panel'!$AA17/SUMPRODUCT('Control panel'!$AA$7:$AA$37,'Control panel'!AF$7:AF$37)*'Control panel'!AF17","v":0},{"$f":"'Control panel'!$AA17/SUMPRODUCT('Control panel'!$AA$7:$AA$37,'Control panel'!AG$7:AG$37)*'Control panel'!AG17","v":2.6490401252579267E-2},{"$f":"'Control panel'!$AA17/SUMPRODUCT('Control panel'!$AA$7:$AA$37,'Control panel'!AH$7:AH$37)*'Control panel'!AH17","v":0.16129576318393954},{"$f":"'Control panel'!$AA17/SUMPRODUCT('Control panel'!$AA$7:$AA$37,'Control panel'!AI$7:AI$37)*'Control panel'!AI17","v":2.3884548644452077E-2},{"$f":"'Control panel'!$AA17/SUMPRODUCT('Control panel'!$AA$7:$AA$37,'Control panel'!AJ$7:AJ$37)*'Control panel'!AJ17","v":2.6421690502051624E-2},{"$f":"'Control panel'!$AA17/SUMPRODUCT('Control panel'!$AA$7:$AA$37,'Control panel'!AK$7:AK$37)*'Control panel'!AK17","v":2.6207532621216435E-2},{"$f":"'Control panel'!$AA17/SUMPRODUCT('Control panel'!$AA$7:$AA$37,'Control panel'!AL$7:AL$37)*'Control panel'!AL17","v":2.3884548644452077E-2},{"$f":"'Control panel'!$AA17/SUMPRODUCT('Control panel'!$AA$7:$AA$37,'Control panel'!AM$7:AM$37)*'Control panel'!AM17","v":0.96106314355280309},{"$f":"'Control panel'!$AA17/SUMPRODUCT('Control panel'!$AA$7:$AA$37,'Control panel'!AN$7:AN$37)*'Control panel'!AN17","v":2.6421690502051624E-2},{"$f":"'Control panel'!$AA17/SUMPRODUCT('Control panel'!$AA$7:$AA$37,'Control panel'!AO$7:AO$37)*'Control panel'!AO17","v":2.6421690502051624E-2},{"$f":"'Control panel'!$AA17/SUMPRODUCT('Control panel'!$AA$7:$AA$37,'Control panel'!AP$7:AP$37)*'Control panel'!AP17","v":2.3884548644452077E-2},{"$f":"'Control panel'!$AA17/SUMPRODUCT('Control panel'!$AA$7:$AA$37,'Control panel'!AQ$7:AQ$37)*'Control panel'!AQ17","v":2.3884548644452077E-2},{"$f":"'Control panel'!$AA17/SUMPRODUCT('Control panel'!$AA$7:$AA$37,'Control panel'!AR$7:AR$37)*'Control panel'!AR17","v":2.3884548644452077E-2},{"$f":"'Control panel'!$AA17/SUMPRODUCT('Control panel'!$AA$7:$AA$37,'Control panel'!AS$7:AS$37)*'Control panel'!AS17","v":2.3884548644452077E-2},{"$f":"'Control panel'!$AA17/SUMPRODUCT('Control panel'!$AA$7:$AA$37,'Control panel'!AT$7:AT$37)*'Control panel'!AT17","v":2.3884548644452077E-2}]
[null,{"$f":"'Opex costs'!B18","v":"Non-network Alternatives"},{"$f":"_xlfn.XLOOKUP($B20,'BBM Costs'!$I$7:$I$25,'BBM Costs'!J$7:J$25)*_xlfn.XLOOKUP($B20,'Control panel'!$E$7:$E$25,'Control panel'!$F$7:$F$25)","v":4.2337752749620616},{"$f":"_xlfn.XLOOKUP($B20,'BBM Costs'!$I$7:$I$25,'BBM Costs'!K$7:K$25)*_xlfn.XLOOKUP($B20,'Control panel'!$E$7:$E$25,'Control panel'!$F$7:$F$25)","v":4.4000395728282466},{"$f":"_xlfn.XLOOKUP($B20,'BBM Costs'!$I$7:$I$25,'BBM Costs'!L$7:L$25)*_xlfn.XLOOKUP($B20,'Control panel'!$E$7:$E$25,'Control panel'!$F$7:$F$25)","v":4.5578594706424349},{"$f":"_xlfn.XLOOKUP($B20,'BBM Costs'!$I$7:$I$25,'BBM Costs'!M$7:M$25)*_xlfn.XLOOKUP($B20,'Control panel'!$E$7:$E$25,'Control panel'!$F$7:$F$25)","v":4.6315353982198584},{"$f":"_xlfn.XLOOKUP($B20,'BBM Costs'!$I$7:$I$25,'BBM Costs'!N$7:N$25)*_xlfn.XLOOKUP($B20,'Control panel'!$E$7:$E$25,'Control panel'!$F$7:$F$25)","v":4.8154781613057267},null,"Non-network Alternatives",{"$f":"C20*_xlfn.XLOOKUP($I20,'Control panel'!$E$7:$E$25,'Control panel'!$H$7:$H$25)","v":3.3870202199696493},{"$f":"D20*_xlfn.XLOOKUP($I20,'Control panel'!$E$7:$E$25,'Control panel'!$H$7:$H$25)","v":3.5200316582625977},{"$f":"E20*_xlfn.XLOOKUP($I20,'Control panel'!$E$7:$E$25,'Control panel'!$H$7:$H$25)","v":3.6462875765139482},{"$f":"F20*_xlfn.XLOOKUP($I20,'Control panel'!$E$7:$E$25,'Control panel'!$H$7:$H$25)","v":3.705228318575887},{"$f":"G20*_xlfn.XLOOKUP($I20,'Control panel'!$E$7:$E$25,'Control panel'!$H$7:$H$25)","v":3.8523825290445814},null,"Non-network Alternatives",{"$f":"C20*_xlfn.XLOOKUP($P20,'Control panel'!$E$7:$E$25,'Control panel'!$I$7:$I$25)","v":0.8467550549924121},{"$f":"D20*_xlfn.XLOOKUP($P20,'Control panel'!$E$7:$E$25,'Control panel'!$I$7:$I$25)","v":0.88000791456564909},{"$f":"E20*_xlfn.XLOOKUP($P20,'Control panel'!$E$7:$E$25,'Control panel'!$I$7:$I$25)","v":0.91157189412848683},{"$f":"F20*_xlfn.XLOOKUP($P20,'Control panel'!$E$7:$E$25,'Control panel'!$I$7:$I$25)","v":0.92630707964397152},{"$f":"G20*_xlfn.XLOOKUP($P20,'Control panel'!$E$7:$E$25,'Control panel'!$I$7:$I$25)","v":0.96309563226114514},null,"2025-26",{"$f":"'PTRM Data'!B18","v":"Metering"},{"$f":"_xlfn.XLOOKUP(X20,'Control panel'!$L$7:$L$37,'Control panel'!$P$7:$P$37)","v":1},0,{"$f":"_xlfn.XLOOKUP(W20,'BBM Costs'!$Q$6:$U$6,_xlfn.XLOOKUP(X20,'BBM Costs'!$P$7:$P$37,'BBM Costs'!$Q$7:$U$37))*_xlfn.XLOOKUP(X20,'Control panel'!$L$7:$L$37,'Control panel'!$M$7:$M$37)","v":0},{"$f":"_xlfn.XLOOKUP(W20,'BBM Costs'!$X$6:$AB$6,_xlfn.XLOOKUP(X20,'BBM Costs'!$W$7:$W$37,'BBM Costs'!$X$7:$AB$37))*_xlfn.XLOOKUP(X20,'Control panel'!$S$7:$S$37,'Control panel'!$T$7:$T$37)","v":0},0,null,{"$f":"'PTRM Data'!B18","v":"Metering"},{"$f":"'Control panel'!$AA18/SUMPRODUCT('Control panel'!$AA$7:$AA$37,'Control panel'!AB$7:AB$37)*'Control panel'!AB18","v":0},{"$f":"'Control panel'!$AA18/SUMPRODUCT('Control panel'!$AA$7:$AA$37,'Control panel'!AC$7:AC$37)*'Control panel'!AC18","v":0},{"$f":"'Control panel'!$AA18/SUMPRODUCT('Control panel'!$AA$7:$AA$37,'Control panel'!AD$7:AD$37)*'Control panel'!AD18","v":0},{"$f":"'Control panel'!$AA18/SUMPRODUCT('Control panel'!$AA$7:$AA$37,'Control panel'!AE$7:AE$37)*'Control panel'!AE18","v":0},{"$f":"'Control panel'!$AA18/SUMPRODUCT('Control panel'!$AA$7:$AA$37,'Control panel'!AF$7:AF$37)*'Control panel'!AF18","v":1},{"$f":"'Control panel'!$AA18/SUMPRODUCT('Control panel'!$AA$7:$AA$37,'Control panel'!AG$7:AG$37)*'Control panel'!AG18","v":0},{"$f":"'Control panel'!$AA18/SUMPRODUCT('Control panel'!$AA$7:$AA$37,'Control panel'!AH$7:AH$37)*'Control panel'!AH18","v":2.8663708726757466E-2},{"$f":"'Control panel'!$AA18/SUMPRODUCT('Control panel'!$AA$7:$AA$37,'Control panel'!AI$7:AI$37)*'Control panel'!AI18","v":4.2444992472239519E-3},{"$f":"'Control panel'!$AA18/SUMPRODUCT('Control panel'!$AA$7:$AA$37,'Control panel'!AJ$7:AJ$37)*'Control panel'!AJ18","v":0},{"$f":"'Control panel'!$AA18/SUMPRODUCT('Control panel'!$AA$7:$AA$37,'Control panel'!AK$7:AK$37)*'Control panel'!AK18","v":0},{"$f":"'Control panel'!$AA18/SUMPRODUCT('Control panel'!$AA$7:$AA$37,'Control panel'!AL$7:AL$37)*'Control panel'!AL18","v":4.2444992472239519E-3},{"$f":"'Control panel'!$AA18/SUMPRODUCT('Control panel'!$AA$7:$AA$37,'Control panel'!AM$7:AM$37)*'Control panel'!AM18","v":0},{"$f":"'Control panel'!$AA18/SUMPRODUCT('Control panel'!$AA$7:$AA$37,'Control panel'!AN$7:AN$37)*'Control panel'!AN18","v":0},{"$f":"'Control panel'!$AA18/SUMPRODUCT('Control panel'!$AA$7:$AA$37,'Control panel'!AO$7:AO$37)*'Control panel'!AO18","v":0},{"$f":"'Control panel'!$AA18/SUMPRODUCT('Control panel'!$AA$7:$AA$37,'Control panel'!AP$7:AP$37)*'Control panel'!AP18","v":4.2444992472239519E-3},{"$f":"'Control panel'!$AA18/SUMPRODUCT('Control panel'!$AA$7:$AA$37,'Control panel'!AQ$7:AQ$37)*'Control panel'!AQ18","v":4.2444992472239519E-3},{"$f":"'Control panel'!$AA18/SUMPRODUCT('Control panel'!$AA$7:$AA$37,'Control panel'!AR$7:AR$37)*'Control panel'!AR18","v":4.2444992472239519E-3},{"$f":"'Control panel'!$AA18/SUMPRODUCT('Control panel'!$AA$7:$AA$37,'Control panel'!AS$7:AS$37)*'Control panel'!AS18","v":4.2444992472239519E-3},{"$f":"'Control panel'!$AA18/SUMPRODUCT('Control panel'!$AA$7:$AA$37,'Control panel'!AT$7:AT$37)*'Control panel'!AT18","v":4.2444992472239519E-3}]
[null,{"$f":"'Opex costs'!B19","v":"Corporate Restructuring"},{"$f":"_xlfn.XLOOKUP($B21,'BBM Costs'!$I$7:$I$25,'BBM Costs'!J$7:J$25)*_xlfn.XLOOKUP($B21,'Control panel'!$E$7:$E$25,'Control panel'!$F$7:$F$25)","v":0},{"$f":"_xlfn.XLOOKUP($B21,'BBM Costs'!$I$7:$I$25,'BBM Costs'!K$7:K$25)*_xlfn.XLOOKUP($B21,'Control panel'!$E$7:$E$25,'Control panel'!$F$7:$F$25)","v":0},{"$f":"_xlfn.XLOOKUP($B21,'BBM Costs'!$I$7:$I$25,'BBM Costs'!L$7:L$25)*_xlfn.XLOOKUP($B21,'Control panel'!$E$7:$E$25,'Control panel'!$F$7:$F$25)","v":0},{"$f":"_xlfn.XLOOKUP($B21,'BBM Costs'!$I$7:$I$25,'BBM Costs'!M$7:M$25)*_xlfn.XLOOKUP($B21,'Control panel'!$E$7:$E$25,'Control panel'!$F$7:$F$25)","v":0},{"$f":"_xlfn.XLOOKUP($B21,'BBM Costs'!$I$7:$I$25,'BBM Costs'!N$7:N$25)*_xlfn.XLOOKUP($B21,'Control panel'!$E$7:$E$25,'Control panel'!$F$7:$F$25)","v":0},null,"Corporate Restructuring",{"$f":"C21*_xlfn.XLOOKUP($I21,'Control panel'!$E$7:$E$25,'Control panel'!$H$7:$H$25)","v":0},{"$f":"D21*_xlfn.XLOOKUP($I21,'Control panel'!$E$7:$E$25,'Control panel'!$H$7:$H$25)","v":0},{"$f":"E21*_xlfn.XLOOKUP($I21,'Control panel'!$E$7:$E$25,'Control panel'!$H$7:$H$25)","v":0},{"$f":"F21*_xlfn.XLOOKUP($I21,'Control panel'!$E$7:$E$25,'Control panel'!$H$7:$H$25)","v":0},{"$f":"G21*_xlfn.XLOOKUP($I21,'Control panel'!$E$7:$E$25,'Control panel'!$H$7:$H$25)","v":0},null,"Corporate Restructuring",{"$f":"C21*_xlfn.XLOOKUP($P21,'Control panel'!$E$7:$E$25,'Control panel'!$I$7:$I$25)","v":0},{"$f":"D21*_xlfn.XLOOKUP($P21,'Control panel'!$E$7:$E$25,'Control panel'!$I$7:$I$25)","v":0},{"$f":"E21*_xlfn.XLOOKUP($P21,'Control panel'!$E$7:$E$25,'Control panel'!$I$7:$I$25)","v":0},{"$f":"F21*_xlfn.XLOOKUP($P21,'Control panel'!$E$7:$E$25,'Control panel'!$I$7:$I$25)","v":0},{"$f":"G21*_xlfn.XLOOKUP($P21,'Control panel'!$E$7:$E$25,'Control panel'!$I$7:$I$25)","v":0},null,"2025-26",{"$f":"'PTRM Data'!B19","v":"Communications – Pilot Wires"},{"$f":"_xlfn.XLOOKUP(X21,'Control panel'!$L$7:$L$37,'Control panel'!$P$7:$P$37)","v":0},0.9688501596701945,{"$f":"_xlfn.XLOOKUP(W21,'BBM Costs'!$Q$6:$U$6,_xlfn.XLOOKUP(X21,'BBM Costs'!$P$7:$P$37,'BBM Costs'!$Q$7:$U$37))*_xlfn.XLOOKUP(X21,'Control panel'!$L$7:$L$37,'Control panel'!$M$7:$M$37)","v":0},{"$f":"_xlfn.XLOOKUP(W21,'BBM Costs'!$X$6:$AB$6,_xlfn.XLOOKUP(X21,'BBM Costs'!$W$7:$W$37,'BBM Costs'!$X$7:$AB$37))*_xlfn.XLOOKUP(X21,'Control panel'!$S$7:$S$37,'Control panel'!$T$7:$T$37)","v":0},0.9688501596701945,null,{"$f":"'PTRM Data'!B19","v":"Communications – Pilot Wires"},{"$f":"'Control panel'!$AA19/SUMPRODUCT('Control panel'!$AA$7:$AA$37,'Control panel'!AB$7:AB$37)*'Control panel'!AB19","v":1.3132988971279945E-2},{"$f":"'Control panel'!$AA19/SUMPRODUCT('Control panel'!$AA$7:$AA$37,'Control panel'!AC$7:AC$37)*'Control panel'!AC19","v":1.3257111345481432E-2},{"$f":"'Control panel'!$AA19/SUMPRODUCT('Control panel'!$AA$7:$AA$37,'Control panel'!AD$7:AD$37)*'Control panel'!AD19","v":1.3255920403026927E-2},{"$f":"'Control panel'!$AA19/SUMPRODUCT('Control panel'!$AA$7:$AA$37,'Control panel'!AE$7:AE$37)*'Control panel'!AE19","v":0},{"$f":"'Control panel'!$AA19/SUMPRODUCT('Control panel'!$AA$7:$AA$37,'Control panel'!AF$7:AF$37)*'Control panel'!AF19","v":0},{"$f":"'Control panel'!$AA19/SUMPRODUCT('Control panel'!$AA$7:$AA$37,'Control panel'!AG$7:AG$37)*'Control panel'!AG19","v":1.3265966476265382E-2},{"$f":"'Control panel'!$AA19/SUMPRODUCT('Control panel'!$AA$7:$AA$37,'Control panel'!AH$7:AH$37)*'Control panel'!AH19","v":8.077432148950342E-2},{"$f":"'Control panel'!$AA19/SUMPRODUCT('Control panel'!$AA$7:$AA$37,'Control panel'!AI$7:AI$37)*'Control panel'!AI19","v":1.1960997441938724E-2},{"$f":"'Control panel'!$AA19/SUMPRODUCT('Control panel'!$AA$7:$AA$37,'Control panel'!AJ$7:AJ$37)*'Control panel'!AJ19","v":1.3231557238580844E-2},{"$f":"'Control panel'!$AA19/SUMPRODUCT('Control panel'!$AA$7:$AA$37,'Control panel'!AK$7:AK$37)*'Control panel'!AK19","v":1.3124310419602931E-2},{"$f":"'Control panel'!$AA19/SUMPRODUCT('Control panel'!$AA$7:$AA$37,'Control panel'!AL$7:AL$37)*'Control panel'!AL19","v":1.1960997441938724E-2},{"$f":"'Control panel'!$AA19/SUMPRODUCT('Control panel'!$AA$7:$AA$37,'Control panel'!AM$7:AM$37)*'Control panel'!AM19","v":0},{"$f":"'Control panel'!$AA19/SUMPRODUCT('Control panel'!$AA$7:$AA$37,'Control panel'!AN$7:AN$37)*'Control panel'!AN19","v":1.3231557238580844E-2},{"$f":"'Control panel'!$AA19/SUMPRODUCT('Control panel'!$AA$7:$AA$37,'Control panel'!AO$7:AO$37)*'Control panel'!AO19","v":1.3231557238580844E-2},{"$f":"'Control panel'!$AA19/SUMPRODUCT('Control panel'!$AA$7:$AA$37,'Control panel'!AP$7:AP$37)*'Control panel'!AP19","v":1.1960997441938724E-2},{"$f":"'Control panel'!$AA19/SUMPRODUCT('Control panel'!$AA$7:$AA$37,'Control panel'!AQ$7:AQ$37)*'Control panel'!AQ19","v":1.1960997441938724E-2},{"$f":"'Control panel'!$AA19/SUMPRODUCT('Control panel'!$AA$7:$AA$37,'Control panel'!AR$7:AR$37)*'Control panel'!AR19","v":1.1960997441938724E-2},{"$f":"'Control panel'!$AA19/SUMPRODUCT('Control panel'!$AA$7:$AA$37,'Control panel'!AS$7:AS$37)*'Control panel'!AS19","v":1.1960997441938724E-2},{"$f":"'Control panel'!$AA19/SUMPRODUCT('Control panel'!$AA$7:$AA$37,'Control panel'!AT$7:AT$37)*'Control panel'!AT19","v":1.1960997441938724E-2}]
[null,{"$f":"'Opex costs'!B20","v":"Corporate Allocations"},{"$f":"_xlfn.XLOOKUP($B22,'BBM Costs'!$I$7:$I$25,'BBM Costs'!J$7:J$25)*_xlfn.XLOOKUP($B22,'Control panel'!$E$7:$E$25,'Control panel'!$F$7:$F$25)","v":0},{"$f":"_xlfn.XLOOKUP($B22,'BBM Costs'!$I$7:$I$25,'BBM Costs'!K$7:K$25)*_xlfn.XLOOKUP($B22,'Control panel'!$E$7:$E$25,'Control panel'!$F$7:$F$25)","v":0},{"$f":"_xlfn.XLOOKUP($B22,'BBM Costs'!$I$7:$I$25,'BBM Costs'!L$7:L$25)*_xlfn.XLOOKUP($B22,'Control panel'!$E$7:$E$25,'Control panel'!$F$7:$F$25)","v":0},{"$f":"_xlfn.XLOOKUP($B22,'BBM Costs'!$I$7:$I$25,'BBM Costs'!M$7:M$25)*_xlfn.XLOOKUP($B22,'Control panel'!$E$7:$E$25,'Control panel'!$F$7:$F$25)","v":0},{"$f":"_xlfn.XLOOKUP($B22,'BBM Costs'!$I$7:$I$25,'BBM Costs'!N$7:N$25)*_xlfn.XLOOKUP($B22,'Control panel'!$E$7:$E$25,'Control panel'!$F$7:$F$25)","v":0},null,"Corporate Allocations",{"$f":"C22*_xlfn.XLOOKUP($I22,'Control panel'!$E$7:$E$25,'Control panel'!$H$7:$H$25)","v":0},{"$f":"D22*_xlfn.XLOOKUP($I22,'Control panel'!$E$7:$E$25,'Control panel'!$H$7:$H$25)","v":0},{"$f":"E22*_xlfn.XLOOKUP($I22,'Control panel'!$E$7:$E$25,'Control panel'!$H$7:$H$25)","v":0},{"$f":"F22*_xlfn.XLOOKUP($I22,'Control panel'!$E$7:$E$25,'Control panel'!$H$7:$H$25)","v":0},{"$f":"G22*_xlfn.XLOOKUP($I22,'Control panel'!$E$7:$E$25,'Control panel'!$H$7:$H$25)","v":0},null,"Corporate Allocations",{"$f":"C22*_xlfn.XLOOKUP($P22,'Control panel'!$E$7:$E$25,'Control panel'!$I$7:$I$25)","v":0},{"$f":"D22*_xlfn.XLOOKUP($P22,'Control panel'!$E$7:$E$25,'Control panel'!$I$7:$I$25)","v":0},{"$f":"E22*_xlfn.XLOOKUP($P22,'Control panel'!$E$7:$E$25,'Control panel'!$I$7:$I$25)","v":0},{"$f":"F22*_xlfn.XLOOKUP($P22,'Control panel'!$E$7:$E$25,'Control panel'!$I$7:$I$25)","v":0},{"$f":"G22*_xlfn.XLOOKUP($P22,'Control panel'!$E$7:$E$25,'Control panel'!$I$7:$I$25)","v":0}]
[null,"EBSS",{"$f":"_xlfn.XLOOKUP($B23,'BBM Costs'!$I$7:$I$25,'BBM Costs'!J$7:J$25)*_xlfn.XLOOKUP($B23,'Control panel'!$E$7:$E$25,'Control panel'!$F$7:$F$25)","v":0},{"$f":"_xlfn.XLOOKUP($B23,'BBM Costs'!$I$7:$I$25,'BBM Costs'!K$7:K$25)*_xlfn.XLOOKUP($B23,'Control panel'!$E$7:$E$25,'Control panel'!$F$7:$F$25)","v":0},{"$f":"_xlfn.XLOOKUP($B23,'BBM Costs'!$I$7:$I$25,'BBM Costs'!L$7:L$25)*_xlfn.XLOOKUP($B23,'Control panel'!$E$7:$E$25,'Control panel'!$F$7:$F$25)","v":0},{"$f":"_xlfn.XLOOKUP($B23,'BBM Costs'!$I$7:$I$25,'BBM Costs'!M$7:M$25)*_xlfn.XLOOKUP($B23,'Control panel'!$E$7:$E$25,'Control panel'!$F$7:$F$25)","v":0},{"$f":"_xlfn.XLOOKUP($B23,'BBM Costs'!$I$7:$I$25,'BBM Costs'!N$7:N$25)*_xlfn.XLOOKUP($B23,'Control panel'!$E$7:$E$25,'Control panel'!$F$7:$F$25)","v":0},null,"EBSS",{"$f":"C23*_xlfn.XLOOKUP($I23,'Control panel'!$E$7:$E$25,'Control panel'!$H$7:$H$25)","v":0},{"$f":"D23*_xlfn.XLOOKUP($I23,'Control panel'!$E$7:$E$25,'Control panel'!$H$7:$H$25)","v":0},{"$f":"E23*_xlfn.XLOOKUP($I23,'Control panel'!$E$7:$E$25,'Control panel'!$H$7:$H$25)","v":0},{"$f":"F23*_xlfn.XLOOKUP($I23,'Control panel'!$E$7:$E$25,'Control panel'!$H$7:$H$25)","v":0},{"$f":"G23*_xlfn.XLOOKUP($I23,'Control panel'!$E$7:$E$25,'Control panel'!$H$7:$H$25)","v":0},null,"EBSS",{"$f":"C23*_xlfn.XLOOKUP($P23,'Control panel'!$E$7:$E$25,'Control panel'!$I$7:$I$25)","v":0},{"$f":"D23*_xlfn.XLOOKUP($P23,'Control panel'!$E$7:$E$25,'Control panel'!$I$7:$I$25)","v":0},{"$f":"E23*_xlfn.XLOOKUP($P23,'Control panel'!$E$7:$E$25,'Control panel'!$I$7:$I$25)","v":0},{"$f":"F23*_xlfn.XLOOKUP($P23,'Control panel'!$E$7:$E$25,'Control panel'!$I$7:$I$25)","v":0},{"$f":"G23*_xlfn.XLOOKUP($P23,'Control panel'!$E$7:$E$25,'Control panel'!$I$7:$I$25)","v":0},null,"2025-26",{"$f":"'PTRM Data'!B21","v":"Land & Easements (System) - combined"},{"$f":"_xlfn.XLOOKUP(X23,'Control panel'!$L$7:$L$37,'Control panel'!$P$7:$P$37)","v":1},0.27716404721179289,{"$f":"_xlfn.XLOOKUP(W23,'BBM Costs'!$Q$6:$U$6,_xlfn.XLOOKUP(X23,'BBM Costs'!$P$7:$P$37,'BBM Costs'!$Q$7:$U$37))*_xlfn.XLOOKUP(X23,'Control panel'!$L$7:$L$37,'Control panel'!$M$7:$M$37)","v":0},{"$f":"_xlfn.XLOOKUP(W23,'BBM Costs'!$X$6:$AB$6,_xlfn.XLOOKUP(X23,'BBM Costs'!$W$7:$W$37,'BBM Costs'!$X$7:$AB$37))*_xlfn.XLOOKUP(X23,'Control panel'!$S$7:$S$37,'Control panel'!$T$7:$T$37)","v":0},0.27716404721179289,null,{"$f":"'PTRM Data'!B21","v":"Land & Easements (System) - combined"},{"$f":"'Control panel'!$AA21/SUMPRODUCT('Control panel'!$AA$7:$AA$37,'Control panel'!AB$7:AB$37)*'Control panel'!AB21","v":8.1107412249817792E-3},{"$f":"'Control panel'!$AA21/SUMPRODUCT('Control panel'!$AA$7:$AA$37,'Control panel'!AC$7:AC$37)*'Control panel'!AC21","v":0},{"$f":"'Control panel'!$AA21/SUMPRODUCT('Control panel'!$AA$7:$AA$37,'Control panel'!AD$7:AD$37)*'Control panel'!AD21","v":0},{"$f":"'Control panel'!$AA21/SUMPRODUCT('Control panel'!$AA$7:$AA$37,'Control panel'!AE$7:AE$37)*'Control panel'!AE21","v":1.4099194849910115E-2},{"$f":"'Control panel'!$AA21/SUMPRODUCT('Control panel'!$AA$7:$AA$37,'Control panel'!AF$7:AF$37)*'Control panel'!AF21","v":0},{"$f":"'Control panel'!$AA21/SUMPRODUCT('Control panel'!$AA$7:$AA$37,'Control panel'!AG$7:AG$37)*'Control panel'!AG21","v":0},{"$f":"'Control panel'!$AA21/SUMPRODUCT('Control panel'!$AA$7:$AA$37,'Control panel'!AH$7:AH$37)*'Control panel'!AH21","v":0},{"$f":"'Control panel'!$AA21/SUMPRODUCT('Control panel'!$AA$7:$AA$37,'Control panel'!AI$7:AI$37)*'Control panel'!AI21","v":7.3869364587442537E-3},{"$f":"'Control panel'!$AA21/SUMPRODUCT('Control panel'!$AA$7:$AA$37,'Control panel'!AJ$7:AJ$37)*'Control panel'!AJ21","v":0},{"$f":"'Control panel'!$AA21/SUMPRODUCT('Control panel'!$AA$7:$AA$37,'Control panel'!AK$7:AK$37)*'Control panel'!AK21","v":8.1053814788482961E-3},{"$f":"'Control panel'!$AA21/SUMPRODUCT('Control panel'!$AA$7:$AA$37,'Control panel'!AL$7:AL$37)*'Control panel'!AL21","v":7.3869364587442537E-3},{"$f":"'Control panel'!$AA21/SUMPRODUCT('Control panel'!$AA$7:$AA$37,'Control panel'!AM$7:AM$37)*'Control panel'!AM21","v":0},{"$f":"'Control panel'!$AA21/SUMPRODUCT('Control panel'!$AA$7:$AA$37,'Control panel'!AN$7:AN$37)*'Control panel'!AN21","v":0},{"$f":"'Control panel'!$AA21/SUMPRODUCT('Control panel'!$AA$7:$AA$37,'Control panel'!AO$7:AO$37)*'Control panel'!AO21","v":0},{"$f":"'Control panel'!$AA21/SUMPRODUCT('Control panel'!$AA$7:$AA$37,'Control panel'!AP$7:AP$37)*'Control panel'!AP21","v":7.3869364587442537E-3},{"$f":"'Control panel'!$AA21/SUMPRODUCT('Control panel'!$AA$7:$AA$37,'Control panel'!AQ$7:AQ$37)*'Control panel'!AQ21","v":7.3869364587442537E-3},{"$f":"'Control panel'!$AA21/SUMPRODUCT('Control panel'!$AA$7:$AA$37,'Control panel'!AR$7:AR$37)*'Control panel'!AR21","v":7.3869364587442537E-3},{"$f":"'Control panel'!$AA21/SUMPRODUCT('Control panel'!$AA$7:$AA$37,'Control panel'!AS$7:AS$37)*'Control panel'!AS21","v":7.3869364587442537E-3},{"$f":"'Control panel'!$AA21/SUMPRODUCT('Control panel'!$AA$7:$AA$37,'Control panel'!AT$7:AT$37)*'Control panel'!AT21","v":7.3869364587442537E-3}]
[null,"CESS",{"$f":"_xlfn.XLOOKUP($B24,'BBM Costs'!$I$7:$I$25,'BBM Costs'!J$7:J$25)*_xlfn.XLOOKUP($B24,'Control panel'!$E$7:$E$25,'Control panel'!$F$7:$F$25)","v":0},{"$f":"_xlfn.XLOOKUP($B24,'BBM Costs'!$I$7:$I$25,'BBM Costs'!K$7:K$25)*_xlfn.XLOOKUP($B24,'Control panel'!$E$7:$E$25,'Control panel'!$F$7:$F$25)","v":0},{"$f":"_xlfn.XLOOKUP($B24,'BBM Costs'!$I$7:$I$25,'BBM Costs'!L$7:L$25)*_xlfn.XLOOKUP($B24,'Control panel'!$E$7:$E$25,'Control panel'!$F$7:$F$25)","v":0},{"$f":"_xlfn.XLOOKUP($B24,'BBM Costs'!$I$7:$I$25,'BBM Costs'!M$7:M$25)*_xlfn.XLOOKUP($B24,'Control panel'!$E$7:$E$25,'Control panel'!$F$7:$F$25)","v":0},{"$f":"_xlfn.XLOOKUP($B24,'BBM Costs'!$I$7:$I$25,'BBM Costs'!N$7:N$25)*_xlfn.XLOOKUP($B24,'Control panel'!$E$7:$E$25,'Control panel'!$F$7:$F$25)","v":0},null,"CESS",{"$f":"C24*_xlfn.XLOOKUP($I24,'Control panel'!$E$7:$E$25,'Control panel'!$H$7:$H$25)","v":0},{"$f":"D24*_xlfn.XLOOKUP($I24,'Control panel'!$E$7:$E$25,'Control panel'!$H$7:$H$25)","v":0},{"$f":"E24*_xlfn.XLOOKUP($I24,'Control panel'!$E$7:$E$25,'Control panel'!$H$7:$H$25)","v":0},{"$f":"F24*_xlfn.XLOOKUP($I24,'Control panel'!$E$7:$E$25,'Control panel'!$H$7:$H$25)","v":0},{"$f":"G24*_xlfn.XLOOKUP($I24,'Control panel'!$E$7:$E$25,'Control panel'!$H$7:$H$25)","v":0},null,"CESS",{"$f":"C24*_xlfn.XLOOKUP($P24,'Control panel'!$E$7:$E$25,'Control panel'!$I$7:$I$25)","v":0},{"$f":"D24*_xlfn.XLOOKUP($P24,'Control panel'!$E$7:$E$25,'Control panel'!$I$7:$I$25)","v":0},{"$f":"E24*_xlfn.XLOOKUP($P24,'Control panel'!$E$7:$E$25,'Control panel'!$I$7:$I$25)","v":0},{"$f":"F24*_xlfn.XLOOKUP($P24,'Control panel'!$E$7:$E$25,'Control panel'!$I$7:$I$25)","v":0},{"$f":"G24*_xlfn.XLOOKUP($P24,'Control panel'!$E$7:$E$25,'Control panel'!$I$7:$I$25)","v":0},null,"2025-26",{"$f":"'PTRM Data'!B22","v":"Land Improvements"},{"$f":"_xlfn.XLOOKUP(X24,'Control panel'!$L$7:$L$37,'Control panel'!$P$7:$P$37)","v":1},0,{"$f":"_xlfn.XLOOKUP(W24,'BBM Costs'!$Q$6:$U$6,_xlfn.XLOOKUP(X24,'BBM Costs'!$P$7:$P$37,'BBM Costs'!$Q$7:$U$37))*_xlfn.XLOOKUP(X24,'Control panel'!$L$7:$L$37,'Control panel'!$M$7:$M$37)","v":0},{"$f":"_xlfn.XLOOKUP(W24,'BBM Costs'!$X$6:$AB$6,_xlfn.XLOOKUP(X24,'BBM Costs'!$W$7:$W$37,'BBM Costs'!$X$7:$AB$37))*_xlfn.XLOOKUP(X24,'Control panel'!$S$7:$S$37,'Control panel'!$T$7:$T$37)","v":0},0,null,{"$f":"'PTRM Data'!B22","v":"Land Improvements"},{"$f":"'Control panel'!$AA22/SUMPRODUCT('Control panel'!$AA$7:$AA$37,'Control panel'!AB$7:AB$37)*'Control panel'!AB22","v":0},{"$f":"'Control panel'!$AA22/SUMPRODUCT('Control panel'!$AA$7:$AA$37,'Control panel'!AC$7:AC$37)*'Control panel'!AC22","v":0},{"$f":"'Control panel'!$AA22/SUMPRODUCT('Control panel'!$AA$7:$AA$37,'Control panel'!AD$7:AD$37)*'Control panel'!AD22","v":0},{"$f":"'Control panel'!$AA22/SUMPRODUCT('Control panel'!$AA$7:$AA$37,'Control panel'!AE$7:AE$37)*'Control panel'!AE22","v":0},{"$f":"'Control panel'!$AA22/SUMPRODUCT('Control panel'!$AA$7:$AA$37,'Control panel'!AF$7:AF$37)*'Control panel'!AF22","v":0},{"$f":"'Control panel'!$AA22/SUMPRODUCT('Control panel'!$AA$7:$AA$37,'Control panel'!AG$7:AG$37)*'Control panel'!AG22","v":0},{"$f":"'Control panel'!$AA22/SUMPRODUCT('Control panel'!$AA$7:$AA$37,'Control panel'!AH$7:AH$37)*'Control panel'!AH22","v":0},{"$f":"'Control panel'!$AA22/SUMPRODUCT('Control panel'!$AA$7:$AA$37,'Control panel'!AI$7:AI$37)*'Control panel'!AI22","v":8.4774635810831601E-3},{"$f":"'Control panel'!$AA22/SUMPRODUCT('Control panel'!$AA$7:$AA$37,'Control panel'!AJ$7:AJ$37)*'Control panel'!AJ22","v":0},{"$f":"'Control panel'!$AA22/SUMPRODUCT('Control panel'!$AA$7:$AA$37,'Control panel'!AK$7:AK$37)*'Control panel'!AK22","v":0},{"$f":"'Control panel'!$AA22/SUMPRODUCT('Control panel'!$AA$7:$AA$37,'Control panel'!AL$7:AL$37)*'Control panel'!AL22","v":8.4774635810831601E-3},{"$f":"'Control panel'!$AA22/SUMPRODUCT('Control panel'!$AA$7:$AA$37,'Control panel'!AM$7:AM$37)*'Control panel'!AM22","v":0},{"$f":"'Control panel'!$AA22/SUMPRODUCT('Control panel'!$AA$7:$AA$37,'Control panel'!AN$7:AN$37)*'Control panel'!AN22","v":0},{"$f":"'Control panel'!$AA22/SUMPRODUCT('Control panel'!$AA$7:$AA$37,'Control panel'!AO$7:AO$37)*'Control panel'!AO22","v":0},{"$f":"'Control panel'!$AA22/SUMPRODUCT('Control panel'!$AA$7:$AA$37,'Control panel'!AP$7:AP$37)*'Control panel'!AP22","v":8.4774635810831601E-3},{"$f":"'Control panel'!$AA22/SUMPRODUCT('Control panel'!$AA$7:$AA$37,'Control panel'!AQ$7:AQ$37)*'Control panel'!AQ22","v":8.4774635810831601E-3},{"$f":"'Control panel'!$AA22/SUMPRODUCT('Control panel'!$AA$7:$AA$37,'Control panel'!AR$7:AR$37)*'Control panel'!AR22","v":8.4774635810831601E-3},{"$f":"'Control panel'!$AA22/SUMPRODUCT('Control panel'!$AA$7:$AA$37,'Control panel'!AS$7:AS$37)*'Control panel'!AS22","v":8.4774635810831601E-3},{"$f":"'Control panel'!$AA22/SUMPRODUCT('Control panel'!$AA$7:$AA$37,'Control panel'!AT$7:AT$37)*'Control panel'!AT22","v":8.4774635810831601E-3}]
[null,"Control period carryover",{"$f":"_xlfn.XLOOKUP($B25,'BBM Costs'!$I$7:$I$25,'BBM Costs'!J$7:J$25)*_xlfn.XLOOKUP($B25,'Control panel'!$E$7:$E$25,'Control panel'!$F$7:$F$25)","v":0},{"$f":"_xlfn.XLOOKUP($B25,'BBM Costs'!$I$7:$I$25,'BBM Costs'!K$7:K$25)*_xlfn.XLOOKUP($B25,'Control panel'!$E$7:$E$25,'Control panel'!$F$7:$F$25)","v":0},{"$f":"_xlfn.XLOOKUP($B25,'BBM Costs'!$I$7:$I$25,'BBM Costs'!L$7:L$25)*_xlfn.XLOOKUP($B25,'Control panel'!$E$7:$E$25,'Control panel'!$F$7:$F$25)","v":0},{"$f":"_xlfn.XLOOKUP($B25,'BBM Costs'!$I$7:$I$25,'BBM Costs'!M$7:M$25)*_xlfn.XLOOKUP($B25,'Control panel'!$E$7:$E$25,'Control panel'!$F$7:$F$25)","v":0},{"$f":"_xlfn.XLOOKUP($B25,'BBM Costs'!$I$7:$I$25,'BBM Costs'!N$7:N$25)*_xlfn.XLOOKUP($B25,'Control panel'!$E$7:$E$25,'Control panel'!$F$7:$F$25)","v":0},null,"Control period carryover",{"$f":"C25*_xlfn.XLOOKUP($I25,'Control panel'!$E$7:$E$25,'Control panel'!$H$7:$H$25)","v":0},{"$f":"D25*_xlfn.XLOOKUP($I25,'Control panel'!$E$7:$E$25,'Control panel'!$H$7:$H$25)","v":0},{"$f":"E25*_xlfn.XLOOKUP($I25,'Control panel'!$E$7:$E$25,'Control panel'!$H$7:$H$25)","v":0},{"$f":"F25*_xlfn.XLOOKUP($I25,'Control panel'!$E$7:$E$25,'Control panel'!$H$7:$H$25)","v":0},{"$f":"G25*_xlfn.XLOOKUP($I25,'Control panel'!$E$7:$E$25,'Control panel'!$H$7:$H$25)","v":0},null,"Control period carryover",{"$f":"C25*_xlfn.XLOOKUP($P25,'Control panel'!$E$7:$E$25,'Control panel'!$I$7:$I$25)","v":0},{"$f":"D25*_xlfn.XLOOKUP($P25,'Control panel'!$E$7:$E$25,'Control panel'!$I$7:$I$25)","v":0},{"$f":"E25*_xlfn.XLOOKUP($P25,'Control panel'!$E$7:$E$25,'Control panel'!$I$7:$I$25)","v":0},{"$f":"F25*_xlfn.XLOOKUP($P25,'Control panel'!$E$7:$E$25,'Control panel'!$I$7:$I$25)","v":0},{"$f":"G25*_xlfn.XLOOKUP($P25,'Control panel'!$E$7:$E$25,'Control panel'!$I$7:$I$25)","v":0},null,"2025-26",{"$f":"'PTRM Data'!B23","v":"Control Centre - SCADA"},{"$f":"_xlfn.XLOOKUP(X25,'Control panel'!$L$7:$L$37,'Control panel'!$P$7:$P$37)","v":1},0.10920525053764793,{"$f":"_xlfn.XLOOKUP(W25,'BBM Costs'!$Q$6:$U$6,_xlfn.XLOOKUP(X25,'BBM Costs'!$P$7:$P$37,'BBM Costs'!$Q$7:$U$37))*_xlfn.XLOOKUP(X25,'Control panel'!$L$7:$L$37,'Control panel'!$M$7:$M$37)","v":0},{"$f":"_xlfn.XLOOKUP(W25,'BBM Costs'!$X$6:$AB$6,_xlfn.XLOOKUP(X25,'BBM Costs'!$W$7:$W$37,'BBM Costs'!$X$7:$AB$37))*_xlfn.XLOOKUP(X25,'Control panel'!$S$7:$S$37,'Control panel'!$T$7:$T$37)","v":0},0.10920525053764793,null,{"$f":"'PTRM Data'!B23","v":"Control Centre - SCADA"},{"$f":"'Control panel'!$AA23/SUMPRODUCT('Control panel'!$AA$7:$AA$37,'Control panel'!AB$7:AB$37)*'Control panel'!AB23","v":1.8242167061490097E-3},{"$f":"'Control panel'!$AA23/SUMPRODUCT('Control panel'!$AA$7:$AA$37,'Control panel'!AC$7:AC$37)*'Control panel'!AC23","v":0},{"$f":"'Control panel'!$AA23/SUMPRODUCT('Control panel'!$AA$7:$AA$37,'Control panel'!AD$7:AD$37)*'Control panel'!AD23","v":0},{"$f":"'Control panel'!$AA23/SUMPRODUCT('Control panel'!$AA$7:$AA$37,'Control panel'!AE$7:AE$37)*'Control panel'!AE23","v":0},{"$f":"'Control panel'!$AA23/SUMPRODUCT('Control panel'!$AA$7:$AA$37,'Control panel'!AF$7:AF$37)*'Control panel'!AF23","v":0},{"$f":"'Control panel'!$AA23/SUMPRODUCT('Control panel'!$AA$7:$AA$37,'Control panel'!AG$7:AG$37)*'Control panel'!AG23","v":0},{"$f":"'Control panel'!$AA23/SUMPRODUCT('Control panel'!$AA$7:$AA$37,'Control panel'!AH$7:AH$37)*'Control panel'!AH23","v":0},{"$f":"'Control panel'!$AA23/SUMPRODUCT('Control panel'!$AA$7:$AA$37,'Control panel'!AI$7:AI$37)*'Control panel'!AI23","v":1.6614231081367962E-3},{"$f":"'Control panel'!$AA23/SUMPRODUCT('Control panel'!$AA$7:$AA$37,'Control panel'!AJ$7:AJ$37)*'Control panel'!AJ23","v":1.8379081727526658E-3},{"$f":"'Control panel'!$AA23/SUMPRODUCT('Control panel'!$AA$7:$AA$37,'Control panel'!AK$7:AK$37)*'Control panel'!AK23","v":1.8230112258894125E-3},{"$f":"'Control panel'!$AA23/SUMPRODUCT('Control panel'!$AA$7:$AA$37,'Control panel'!AL$7:AL$37)*'Control panel'!AL23","v":1.6614231081367962E-3},{"$f":"'Control panel'!$AA23/SUMPRODUCT('Control panel'!$AA$7:$AA$37,'Control panel'!AM$7:AM$37)*'Control panel'!AM23","v":0},{"$f":"'Control panel'!$AA23/SUMPRODUCT('Control panel'!$AA$7:$AA$37,'Control panel'!AN$7:AN$37)*'Control panel'!AN23","v":1.8379081727526658E-3},{"$f":"'Control panel'!$AA23/SUMPRODUCT('Control panel'!$AA$7:$AA$37,'Control panel'!AO$7:AO$37)*'Control panel'!AO23","v":1.8379081727526658E-3},{"$f":"'Control panel'!$AA23/SUMPRODUCT('Control panel'!$AA$7:$AA$37,'Control panel'!AP$7:AP$37)*'Control panel'!AP23","v":1.6614231081367962E-3},{"$f":"'Control panel'!$AA23/SUMPRODUCT('Control panel'!$AA$7:$AA$37,'Control panel'!AQ$7:AQ$37)*'Control panel'!AQ23","v":1.6614231081367962E-3},{"$f":"'Control panel'!$AA23/SUMPRODUCT('Control panel'!$AA$7:$AA$37,'Control panel'!AR$7:AR$37)*'Control panel'!AR23","v":1.6614231081367962E-3},{"$f":"'Control panel'!$AA23/SUMPRODUCT('Control panel'!$AA$7:$AA$37,'Control panel'!AS$7:AS$37)*'Control panel'!AS23","v":1.6614231081367962E-3},{"$f":"'Control panel'!$AA23/SUMPRODUCT('Control panel'!$AA$7:$AA$37,'Control panel'!AT$7:AT$37)*'Control panel'!AT23","v":1.6614231081367962E-3}]
[null,"Shared asset decrements",{"$f":"_xlfn.XLOOKUP($B26,'BBM Costs'!$I$7:$I$25,'BBM Costs'!J$7:J$25)*_xlfn.XLOOKUP($B26,'Control panel'!$E$7:$E$25,'Control panel'!$F$7:$F$25)","v":0},{"$f":"_xlfn.XLOOKUP($B26,'BBM Costs'!$I$7:$I$25,'BBM Costs'!K$7:K$25)*_xlfn.XLOOKUP($B26,'Control panel'!$E$7:$E$25,'Control panel'!$F$7:$F$25)","v":0},{"$f":"_xlfn.XLOOKUP($B26,'BBM Costs'!$I$7:$I$25,'BBM Costs'!L$7:L$25)*_xlfn.XLOOKUP($B26,'Control panel'!$E$7:$E$25,'Control panel'!$F$7:$F$25)","v":0},{"$f":"_xlfn.XLOOKUP($B26,'BBM Costs'!$I$7:$I$25,'BBM Costs'!M$7:M$25)*_xlfn.XLOOKUP($B26,'Control panel'!$E$7:$E$25,'Control panel'!$F$7:$F$25)","v":0},{"$f":"_xlfn.XLOOKUP($B26,'BBM Costs'!$I$7:$I$25,'BBM Costs'!N$7:N$25)*_xlfn.XLOOKUP($B26,'Control panel'!$E$7:$E$25,'Control panel'!$F$7:$F$25)","v":0},null,"Shared asset decrements",{"$f":"C26*_xlfn.XLOOKUP($I26,'Control panel'!$E$7:$E$25,'Control panel'!$H$7:$H$25)","v":0},{"$f":"D26*_xlfn.XLOOKUP($I26,'Control panel'!$E$7:$E$25,'Control panel'!$H$7:$H$25)","v":0},{"$f":"E26*_xlfn.XLOOKUP($I26,'Control panel'!$E$7:$E$25,'Control panel'!$H$7:$H$25)","v":0},{"$f":"F26*_xlfn.XLOOKUP($I26,'Control panel'!$E$7:$E$25,'Control panel'!$H$7:$H$25)","v":0},{"$f":"G26*_xlfn.XLOOKUP($I26,'Control panel'!$E$7:$E$25,'Control panel'!$H$7:$H$25)","v":0},null,"Shared asset decrements",{"$f":"C26*_xlfn.XLOOKUP($P26,'Control panel'!$E$7:$E$25,'Control panel'!$I$7:$I$25)","v":0},{"$f":"D26*_xlfn.XLOOKUP($P26,'Control panel'!$E$7:$E$25,'Control panel'!$I$7:$I$25)","v":0},{"$f":"E26*_xlfn.XLOOKUP($P26,'Control panel'!$E$7:$E$25,'Control panel'!$I$7:$I$25)","v":0},{"$f":"F26*_xlfn.XLOOKUP($P26,'Control panel'!$E$7:$E$25,'Control panel'!$I$7:$I$25)","v":0},{"$f":"G26*_xlfn.XLOOKUP($P26,'Control panel'!$E$7:$E$25,'Control panel'!$I$7:$I$25)","v":0},null,"2025-26",{"$f":"'PTRM Data'!B24","v":"Other Equipment"},{"$f":"_xlfn.XLOOKUP(X26,'Control panel'!$L$7:$L$37,'Control panel'!$P$7:$P$37)","v":1},8.089779841370822E-3,{"$f":"_xlfn.XLOOKUP(W26,'BBM Costs'!$Q$6:$U$6,_xlfn.XLOOKUP(X26,'BBM Costs'!$P$7:$P$37,'BBM Costs'!$Q$7:$U$37))*_xlfn.XLOOKUP(X26,'Control panel'!$L$7:$L$37,'Control panel'!$M$7:$M$37)","v":0},{"$f":"_xlfn.XLOOKUP(W26,'BBM Costs'!$X$6:$AB$6,_xlfn.XLOOKUP(X26,'BBM Costs'!$W$7:$W$37,'BBM Costs'!$X$7:$AB$37))*_xlfn.XLOOKUP(X26,'Control panel'!$S$7:$S$37,'Control panel'!$T$7:$T$37)","v":0},8.089779841370822E-3,null,{"$f":"'PTRM Data'!B24","v":"Other Equipment"},{"$f":"'Control panel'!$AA24/SUMPRODUCT('Control panel'!$AA$7:$AA$37,'Control panel'!AB$7:AB$37)*'Control panel'!AB24","v":8.9001139122599492E-5},{"$f":"'Control panel'!$AA24/SUMPRODUCT('Control panel'!$AA$7:$AA$37,'Control panel'!AC$7:AC$37)*'Control panel'!AC24","v":0},{"$f":"'Control panel'!$AA24/SUMPRODUCT('Control panel'!$AA$7:$AA$37,'Control panel'!AD$7:AD$37)*'Control panel'!AD24","v":8.9834234884986875E-5},{"$f":"'Control panel'!$AA24/SUMPRODUCT('Control panel'!$AA$7:$AA$37,'Control panel'!AE$7:AE$37)*'Control panel'!AE24","v":0},{"$f":"'Control panel'!$AA24/SUMPRODUCT('Control panel'!$AA$7:$AA$37,'Control panel'!AF$7:AF$37)*'Control panel'!AF24","v":0},{"$f":"'Control panel'!$AA24/SUMPRODUCT('Control panel'!$AA$7:$AA$37,'Control panel'!AG$7:AG$37)*'Control panel'!AG24","v":0},{"$f":"'Control panel'!$AA24/SUMPRODUCT('Control panel'!$AA$7:$AA$37,'Control panel'!AH$7:AH$37)*'Control panel'!AH24","v":0},{"$f":"'Control panel'!$AA24/SUMPRODUCT('Control panel'!$AA$7:$AA$37,'Control panel'!AI$7:AI$37)*'Control panel'!AI24","v":8.1058653114158102E-5},{"$f":"'Control panel'!$AA24/SUMPRODUCT('Control panel'!$AA$7:$AA$37,'Control panel'!AJ$7:AJ$37)*'Control panel'!AJ24","v":8.9669127810498769E-5},{"$f":"'Control panel'!$AA24/SUMPRODUCT('Control panel'!$AA$7:$AA$37,'Control panel'!AK$7:AK$37)*'Control panel'!AK24","v":8.8942325322719084E-5},{"$f":"'Control panel'!$AA24/SUMPRODUCT('Control panel'!$AA$7:$AA$37,'Control panel'!AL$7:AL$37)*'Control panel'!AL24","v":8.1058653114158102E-5},{"$f":"'Control panel'!$AA24/SUMPRODUCT('Control panel'!$AA$7:$AA$37,'Control panel'!AM$7:AM$37)*'Control panel'!AM24","v":3.2616268003935779E-3},{"$f":"'Control panel'!$AA24/SUMPRODUCT('Control panel'!$AA$7:$AA$37,'Control panel'!AN$7:AN$37)*'Control panel'!AN24","v":8.9669127810498769E-5},{"$f":"'Control panel'!$AA24/SUMPRODUCT('Control panel'!$AA$7:$AA$37,'Control panel'!AO$7:AO$37)*'Control panel'!AO24","v":8.9669127810498769E-5},{"$f":"'Control panel'!$AA24/SUMPRODUCT('Control panel'!$AA$7:$AA$37,'Control panel'!AP$7:AP$37)*'Control panel'!AP24","v":8.1058653114158102E-5},{"$f":"'Control panel'!$AA24/SUMPRODUCT('Control panel'!$AA$7:$AA$37,'Control panel'!AQ$7:AQ$37)*'Control panel'!AQ24","v":8.1058653114158102E-5},{"$f":"'Control panel'!$AA24/SUMPRODUCT('Control panel'!$AA$7:$AA$37,'Control panel'!AR$7:AR$37)*'Control panel'!AR24","v":8.1058653114158102E-5},{"$f":"'Control panel'!$AA24/SUMPRODUCT('Control panel'!$AA$7:$AA$37,'Control panel'!AS$7:AS$37)*'Control panel'!AS24","v":8.1058653114158102E-5},{"$f":"'Control panel'!$AA24/SUMPRODUCT('Control panel'!$AA$7:$AA$37,'Control panel'!AT$7:AT$37)*'Control panel'!AT24","v":8.1058653114158102E-5}]
[null,"DMIA",{"$f":"_xlfn.XLOOKUP($B27,'BBM Costs'!$I$7:$I$25,'BBM Costs'!J$7:J$25)*_xlfn.XLOOKUP($B27,'Control panel'!$E$7:$E$25,'Control panel'!$F$7:$F$25)","v":0},{"$f":"_xlfn.XLOOKUP($B27,'BBM Costs'!$I$7:$I$25,'BBM Costs'!K$7:K$25)*_xlfn.XLOOKUP($B27,'Control panel'!$E$7:$E$25,'Control panel'!$F$7:$F$25)","v":0},{"$f":"_xlfn.XLOOKUP($B27,'BBM Costs'!$I$7:$I$25,'BBM Costs'!L$7:L$25)*_xlfn.XLOOKUP($B27,'Control panel'!$E$7:$E$25,'Control panel'!$F$7:$F$25)","v":0},{"$f":"_xlfn.XLOOKUP($B27,'BBM Costs'!$I$7:$I$25,'BBM Costs'!M$7:M$25)*_xlfn.XLOOKUP($B27,'Control panel'!$E$7:$E$25,'Control panel'!$F$7:$F$25)","v":0},{"$f":"_xlfn.XLOOKUP($B27,'BBM Costs'!$I$7:$I$25,'BBM Costs'!N$7:N$25)*_xlfn.XLOOKUP($B27,'Control panel'!$E$7:$E$25,'Control panel'!$F$7:$F$25)","v":0},null,"DMIA",{"$f":"C27*_xlfn.XLOOKUP($I27,'Control panel'!$E$7:$E$25,'Control panel'!$H$7:$H$25)","v":0},{"$f":"D27*_xlfn.XLOOKUP($I27,'Control panel'!$E$7:$E$25,'Control panel'!$H$7:$H$25)","v":0},{"$f":"E27*_xlfn.XLOOKUP($I27,'Control panel'!$E$7:$E$25,'Control panel'!$H$7:$H$25)","v":0},{"$f":"F27*_xlfn.XLOOKUP($I27,'Control panel'!$E$7:$E$25,'Control panel'!$H$7:$H$25)","v":0},{"$f":"G27*_xlfn.XLOOKUP($I27,'Control panel'!$E$7:$E$25,'Control panel'!$H$7:$H$25)","v":0},null,"DMIA",{"$f":"C27*_xlfn.XLOOKUP($P27,'Control panel'!$E$7:$E$25,'Control panel'!$I$7:$I$25)","v":0},{"$f":"D27*_xlfn.XLOOKUP($P27,'Control panel'!$E$7:$E$25,'Control panel'!$I$7:$I$25)","v":0},{"$f":"E27*_xlfn.XLOOKUP($P27,'Control panel'!$E$7:$E$25,'Control panel'!$I$7:$I$25)","v":0},{"$f":"F27*_xlfn.XLOOKUP($P27,'Control panel'!$E$7:$E$25,'Control panel'!$I$7:$I$25)","v":0},{"$f":"G27*_xlfn.XLOOKUP($P27,'Control panel'!$E$7:$E$25,'Control panel'!$I$7:$I$25)","v":0},null,"2025-26",{"$f":"'PTRM Data'!B25","v":"Generation Assets"},{"$f":"_xlfn.XLOOKUP(X27,'Control panel'!$L$7:$L$37,'Control panel'!$P$7:$P$37)","v":1},0.10202416434861017,{"$f":"_xlfn.XLOOKUP(W27,'BBM Costs'!$Q$6:$U$6,_xlfn.XLOOKUP(X27,'BBM Costs'!$P$7:$P$37,'BBM Costs'!$Q$7:$U$37))*_xlfn.XLOOKUP(X27,'Control panel'!$L$7:$L$37,'Control panel'!$M$7:$M$37)","v":0},{"$f":"_xlfn.XLOOKUP(W27,'BBM Costs'!$X$6:$AB$6,_xlfn.XLOOKUP(X27,'BBM Costs'!$W$7:$W$37,'BBM Costs'!$X$7:$AB$37))*_xlfn.XLOOKUP(X27,'Control panel'!$S$7:$S$37,'Control panel'!$T$7:$T$37)","v":0},0.10202416434861017,null,{"$f":"'PTRM Data'!B25","v":"Generation Assets"},{"$f":"'Control panel'!$AA25/SUMPRODUCT('Control panel'!$AA$7:$AA$37,'Control panel'!AB$7:AB$37)*'Control panel'!AB25","v":9.7348233606698589E-4},{"$f":"'Control panel'!$AA25/SUMPRODUCT('Control panel'!$AA$7:$AA$37,'Control panel'!AC$7:AC$37)*'Control panel'!AC25","v":9.8268290259910475E-4},{"$f":"'Control panel'!$AA25/SUMPRODUCT('Control panel'!$AA$7:$AA$37,'Control panel'!AD$7:AD$37)*'Control panel'!AD25","v":9.825946240324152E-4},{"$f":"'Control panel'!$AA25/SUMPRODUCT('Control panel'!$AA$7:$AA$37,'Control panel'!AE$7:AE$37)*'Control panel'!AE25","v":0},{"$f":"'Control panel'!$AA25/SUMPRODUCT('Control panel'!$AA$7:$AA$37,'Control panel'!AF$7:AF$37)*'Control panel'!AF25","v":0},{"$f":"'Control panel'!$AA25/SUMPRODUCT('Control panel'!$AA$7:$AA$37,'Control panel'!AG$7:AG$37)*'Control panel'!AG25","v":9.8333928885059618E-4},{"$f":"'Control panel'!$AA25/SUMPRODUCT('Control panel'!$AA$7:$AA$37,'Control panel'!AH$7:AH$37)*'Control panel'!AH25","v":5.9873936808890801E-3},{"$f":"'Control panel'!$AA25/SUMPRODUCT('Control panel'!$AA$7:$AA$37,'Control panel'!AI$7:AI$37)*'Control panel'!AI25","v":8.8660850602503339E-4},{"$f":"'Control panel'!$AA25/SUMPRODUCT('Control panel'!$AA$7:$AA$37,'Control panel'!AJ$7:AJ$37)*'Control panel'!AJ25","v":9.8078870534240321E-4},{"$f":"'Control panel'!$AA25/SUMPRODUCT('Control panel'!$AA$7:$AA$37,'Control panel'!AK$7:AK$37)*'Control panel'!AK25","v":9.7283903873545731E-4},{"$f":"'Control panel'!$AA25/SUMPRODUCT('Control panel'!$AA$7:$AA$37,'Control panel'!AL$7:AL$37)*'Control panel'!AL25","v":8.8660850602503339E-4},{"$f":"'Control panel'!$AA25/SUMPRODUCT('Control panel'!$AA$7:$AA$37,'Control panel'!AM$7:AM$37)*'Control panel'!AM25","v":3.5675229646803322E-2},{"$f":"'Control panel'!$AA25/SUMPRODUCT('Control panel'!$AA$7:$AA$37,'Control panel'!AN$7:AN$37)*'Control panel'!AN25","v":9.8078870534240321E-4},{"$f":"'Control panel'!$AA25/SUMPRODUCT('Control panel'!$AA$7:$AA$37,'Control panel'!AO$7:AO$37)*'Control panel'!AO25","v":9.8078870534240321E-4},{"$f":"'Control panel'!$AA25/SUMPRODUCT('Control panel'!$AA$7:$AA$37,'Control panel'!AP$7:AP$37)*'Control panel'!AP25","v":8.8660850602503339E-4},{"$f":"'Control panel'!$AA25/SUMPRODUCT('Control panel'!$AA$7:$AA$37,'Control panel'!AQ$7:AQ$37)*'Control panel'!AQ25","v":8.8660850602503339E-4},{"$f":"'Control panel'!$AA25/SUMPRODUCT('Control panel'!$AA$7:$AA$37,'Control panel'!AR$7:AR$37)*'Control panel'!AR25","v":8.8660850602503339E-4},{"$f":"'Control panel'!$AA25/SUMPRODUCT('Control panel'!$AA$7:$AA$37,'Control panel'!AS$7:AS$37)*'Control panel'!AS25","v":8.8660850602503339E-4},{"$f":"'Control panel'!$AA25/SUMPRODUCT('Control panel'!$AA$7:$AA$37,'Control panel'!AT$7:AT$37)*'Control panel'!AT25","v":8.8660850602503339E-4}]
[null,null,null,null,null,null,null,null,null,null,null,null,null,null,null,null,null,null,null,null,null,null,"2025-26",{"$f":"'PTRM Data'!B26","v":"Motor Vehicles"},{"$f":"_xlfn.XLOOKUP(X28,'Control panel'!$L$7:$L$37,'Control panel'!$P$7:$P$37)","v":1},0,{"$f":"_xlfn.XLOOKUP(W28,'BBM Costs'!$Q$6:$U$6,_xlfn.XLOOKUP(X28,'BBM Costs'!$P$7:$P$37,'BBM Costs'!$Q$7:$U$37))*_xlfn.XLOOKUP(X28,'Control panel'!$L$7:$L$37,'Control panel'!$M$7:$M$37)","v":0},{"$f":"_xlfn.XLOOKUP(W28,'BBM Costs'!$X$6:$AB$6,_xlfn.XLOOKUP(X28,'BBM Costs'!$W$7:$W$37,'BBM Costs'!$X$7:$AB$37))*_xlfn.XLOOKUP(X28,'Control panel'!$S$7:$S$37,'Control panel'!$T$7:$T$37)","v":0},0,null,{"$f":"'PTRM Data'!B26","v":"Motor Vehicles"},{"$f":"'Control panel'!$AA26/SUMPRODUCT('Control panel'!$AA$7:$AA$37,'Control panel'!AB$7:AB$37)*'Control panel'!AB26","v":0},{"$f":"'Control panel'!$AA26/SUMPRODUCT('Control panel'!$AA$7:$AA$37,'Control panel'!AC$7:AC$37)*'Control panel'!AC26","v":0},{"$f":"'Control panel'!$AA26/SUMPRODUCT('Control panel'!$AA$7:$AA$37,'Control panel'!AD$7:AD$37)*'Control panel'!AD26","v":0},{"$f":"'Control panel'!$AA26/SUMPRODUCT('Control panel'!$AA$7:$AA$37,'Control panel'!AE$7:AE$37)*'Control panel'!AE26","v":0},{"$f":"'Control panel'!$AA26/SUMPRODUCT('Control panel'!$AA$7:$AA$37,'Control panel'!AF$7:AF$37)*'Control panel'!AF26","v":0},{"$f":"'Control panel'!$AA26/SUMPRODUCT('Control panel'!$AA$7:$AA$37,'Control panel'!AG$7:AG$37)*'Control panel'!AG26","v":0},{"$f":"'Control panel'!$AA26/SUMPRODUCT('Control panel'!$AA$7:$AA$37,'Control panel'!AH$7:AH$37)*'Control panel'!AH26","v":0},{"$f":"'Control panel'!$AA26/SUMPRODUCT('Control panel'!$AA$7:$AA$37,'Control panel'!AI$7:AI$37)*'Control panel'!AI26","v":1.0610839053249875E-2},{"$f":"'Control panel'!$AA26/SUMPRODUCT('Control panel'!$AA$7:$AA$37,'Control panel'!AJ$7:AJ$37)*'Control panel'!AJ26","v":0},{"$f":"'Control panel'!$AA26/SUMPRODUCT('Control panel'!$AA$7:$AA$37,'Control panel'!AK$7:AK$37)*'Control panel'!AK26","v":0},{"$f":"'Control panel'!$AA26/SUMPRODUCT('Control panel'!$AA$7:$AA$37,'Control panel'!AL$7:AL$37)*'Control panel'!AL26","v":1.0610839053249875E-2},{"$f":"'Control panel'!$AA26/SUMPRODUCT('Control panel'!$AA$7:$AA$37,'Control panel'!AM$7:AM$37)*'Control panel'!AM26","v":0},{"$f":"'Control panel'!$AA26/SUMPRODUCT('Control panel'!$AA$7:$AA$37,'Control panel'!AN$7:AN$37)*'Control panel'!AN26","v":0},{"$f":"'Control panel'!$AA26/SUMPRODUCT('Control panel'!$AA$7:$AA$37,'Control panel'!AO$7:AO$37)*'Control panel'!AO26","v":0},{"$f":"'Control panel'!$AA26/SUMPRODUCT('Control panel'!$AA$7:$AA$37,'Control panel'!AP$7:AP$37)*'Control panel'!AP26","v":1.0610839053249875E-2},{"$f":"'Control panel'!$AA26/SUMPRODUCT('Control panel'!$AA$7:$AA$37,'Control panel'!AQ$7:AQ$37)*'Control panel'!AQ26","v":1.0610839053249875E-2},{"$f":"'Control panel'!$AA26/SUMPRODUCT('Control panel'!$AA$7:$AA$37,'Control panel'!AR$7:AR$37)*'Control panel'!AR26","v":1.0610839053249875E-2},{"$f":"'Control panel'!$AA26/SUMPRODUCT('Control panel'!$AA$7:$AA$37,'Control panel'!AS$7:AS$37)*'Control panel'!AS26","v":1.0610839053249875E-2},{"$f":"'Control panel'!$AA26/SUMPRODUCT('Control panel'!$AA$7:$AA$37,'Control panel'!AT$7:AT$37)*'Control panel'!AT26","v":1.0610839053249875E-2}]
[null,"Total",{"$f":"SUM(C9:C27)","v":126.70309197100289},{"$f":"SUM(D9:D27)","v":131.67884038840612},136.40187544080024,138.6067557713877,144.11156302143192,null,"Total",{"$f":"SUM(J9:J27)","v":52.399958968171148},{"$f":"SUM(K9:K27)","v":54.457754155738812},56.411035951003328,57.322897193339465,59.599492575052992,null,"Total",{"$f":"SUM(Q9:Q27)","v":74.303133002831757},{"$f":"SUM(R9:R27)","v":77.221086232667346},79.99083948979694,81.283858578048225,84.512070446378928,null,"2025-26",{"$f":"'PTRM Data'!B27","v":"Plant & Equipment"},{"$f":"_xlfn.XLOOKUP(X29,'Control panel'!$L$7:$L$37,'Control panel'!$P$7:$P$37)","v":1},0,{"$f":"_xlfn.XLOOKUP(W29,'BBM Costs'!$Q$6:$U$6,_xlfn.XLOOKUP(X29,'BBM Costs'!$P$7:$P$37,'BBM Costs'!$Q$7:$U$37))*_xlfn.XLOOKUP(X29,'Control panel'!$L$7:$L$37,'Control panel'!$M$7:$M$37)","v":0},{"$f":"_xlfn.XLOOKUP(W29,'BBM Costs'!$X$6:$AB$6,_xlfn.XLOOKUP(X29,'BBM Costs'!$W$7:$W$37,'BBM Costs'!$X$7:$AB$37))*_xlfn.XLOOKUP(X29,'Control panel'!$S$7:$S$37,'Control panel'!$T$7:$T$37)","v":0},0,null,{"$f":"'PTRM Data'!B27","v":"Plant & Equipment"},{"$f":"'Control panel'!$AA27/SUMPRODUCT('Control panel'!$AA$7:$AA$37,'Control panel'!AB$7:AB$37)*'Control panel'!AB27","v":0},{"$f":"'Control panel'!$AA27/SUMPRODUCT('Control panel'!$AA$7:$AA$37,'Control panel'!AC$7:AC$37)*'Control panel'!AC27","v":0},{"$f":"'Control panel'!$AA27/SUMPRODUCT('Control panel'!$AA$7:$AA$37,'Control panel'!AD$7:AD$37)*'Control panel'!AD27","v":0},{"$f":"'Control panel'!$AA27/SUMPRODUCT('Control panel'!$AA$7:$AA$37,'Control panel'!AE$7:AE$37)*'Control panel'!AE27","v":0},{"$f":"'Control panel'!$AA27/SUMPRODUCT('Control panel'!$AA$7:$AA$37,'Control panel'!AF$7:AF$37)*'Control panel'!AF27","v":0},{"$f":"'Control panel'!$AA27/SUMPRODUCT('Control panel'!$AA$7:$AA$37,'Control panel'!AG$7:AG$37)*'Control panel'!AG27","v":0},{"$f":"'Control panel'!$AA27/SUMPRODUCT('Control panel'!$AA$7:$AA$37,'Control panel'!AH$7:AH$37)*'Control panel'!AH27","v":0},{"$f":"'Control panel'!$AA27/SUMPRODUCT('Control panel'!$AA$7:$AA$37,'Control panel'!AI$7:AI$37)*'Control panel'!AI27","v":2.5479548753378012E-3},{"$f":"'Control panel'!$AA27/SUMPRODUCT('Control panel'!$AA$7:$AA$37,'Control panel'!AJ$7:AJ$37)*'Control panel'!AJ27","v":0},{"$f":"'Control panel'!$AA27/SUMPRODUCT('Control panel'!$AA$7:$AA$37,'Control panel'!AK$7:AK$37)*'Control panel'!AK27","v":0},{"$f":"'Control panel'!$AA27/SUMPRODUCT('Control panel'!$AA$7:$AA$37,'Control panel'!AL$7:AL$37)*'Control panel'!AL27","v":2.5479548753378012E-3},{"$f":"'Control panel'!$AA27/SUMPRODUCT('Control panel'!$AA$7:$AA$37,'Control panel'!AM$7:AM$37)*'Control panel'!AM27","v":0},{"$f":"'Control panel'!$AA27/SUMPRODUCT('Control panel'!$AA$7:$AA$37,'Control panel'!AN$7:AN$37)*'Control panel'!AN27","v":0},{"$f":"'Control panel'!$AA27/SUMPRODUCT('Control panel'!$AA$7:$AA$37,'Control panel'!AO$7:AO$37)*'Control panel'!AO27","v":0},{"$f":"'Control panel'!$AA27/SUMPRODUCT('Control panel'!$AA$7:$AA$37,'Control panel'!AP$7:AP$37)*'Control panel'!AP27","v":2.5479548753378012E-3},{"$f":"'Control panel'!$AA27/SUMPRODUCT('Control panel'!$AA$7:$AA$37,'Control panel'!AQ$7:AQ$37)*'Control panel'!AQ27","v":2.5479548753378012E-3},{"$f":"'Control panel'!$AA27/SUMPRODUCT('Control panel'!$AA$7:$AA$37,'Control panel'!AR$7:AR$37)*'Control panel'!AR27","v":2.5479548753378012E-3},{"$f":"'Control panel'!$AA27/SUMPRODUCT('Control panel'!$AA$7:$AA$37,'Control panel'!AS$7:AS$37)*'Control panel'!AS27","v":2.5479548753378012E-3},{"$f":"'Control panel'!$AA27/SUMPRODUCT('Control panel'!$AA$7:$AA$37,'Control panel'!AT$7:AT$37)*'Control panel'!AT27","v":2.5479548753378012E-3}]
[null,null,null,null,null,null,null,null,null,null,null,null,null,null,null,null,null,null,null,null,null,null,"2025-26",{"$f":"'PTRM Data'!B28","v":"Buildings"},{"$f":"_xlfn.XLOOKUP(X30,'Control panel'!$L$7:$L$37,'Control panel'!$P$7:$P$37)","v":1},0,{"$f":"_xlfn.XLOOKUP(W30,'BBM Costs'!$Q$6:$U$6,_xlfn.XLOOKUP(X30,'BBM Costs'!$P$7:$P$37,'BBM Costs'!$Q$7:$U$37))*_xlfn.XLOOKUP(X30,'Control panel'!$L$7:$L$37,'Control panel'!$M$7:$M$37)","v":0},{"$f":"_xlfn.XLOOKUP(W30,'BBM Costs'!$X$6:$AB$6,_xlfn.XLOOKUP(X30,'BBM Costs'!$W$7:$W$37,'BBM Costs'!$X$7:$AB$37))*_xlfn.XLOOKUP(X30,'Control panel'!$S$7:$S$37,'Control panel'!$T$7:$T$37)","v":0},0,null,{"$f":"'PTRM Data'!B28","v":"Buildings"},{"$f":"'Control panel'!$AA28/SUMPRODUCT('Control panel'!$AA$7:$AA$37,'Control panel'!AB$7:AB$37)*'Control panel'!AB28","v":0},{"$f":"'Control panel'!$AA28/SUMPRODUCT('Control panel'!$AA$7:$AA$37,'Control panel'!AC$7:AC$37)*'Control panel'!AC28","v":0},{"$f":"'Control panel'!$AA28/SUMPRODUCT('Control panel'!$AA$7:$AA$37,'Control panel'!AD$7:AD$37)*'Control panel'!AD28","v":0},{"$f":"'Control panel'!$AA28/SUMPRODUCT('Control panel'!$AA$7:$AA$37,'Control panel'!AE$7:AE$37)*'Control panel'!AE28","v":0},{"$f":"'Control panel'!$AA28/SUMPRODUCT('Control panel'!$AA$7:$AA$37,'Control panel'!AF$7:AF$37)*'Control panel'!AF28","v":0},{"$f":"'Control panel'!$AA28/SUMPRODUCT('Control panel'!$AA$7:$AA$37,'Control panel'!AG$7:AG$37)*'Control panel'!AG28","v":0},{"$f":"'Control panel'!$AA28/SUMPRODUCT('Control panel'!$AA$7:$AA$37,'Control panel'!AH$7:AH$37)*'Control panel'!AH28","v":0},{"$f":"'Control panel'!$AA28/SUMPRODUCT('Control panel'!$AA$7:$AA$37,'Control panel'!AI$7:AI$37)*'Control panel'!AI28","v":2.5350352940560133E-2},{"$f":"'Control panel'!$AA28/SUMPRODUCT('Control panel'!$AA$7:$AA$37,'Control panel'!AJ$7:AJ$37)*'Control panel'!AJ28","v":0},{"$f":"'Control panel'!$AA28/SUMPRODUCT('Control panel'!$AA$7:$AA$37,'Control panel'!AK$7:AK$37)*'Control panel'!AK28","v":0},{"$f":"'Control panel'!$AA28/SUMPRODUCT('Control panel'!$AA$7:$AA$37,'Control panel'!AL$7:AL$37)*'Control panel'!AL28","v":2.5350352940560133E-2},{"$f":"'Control panel'!$AA28/SUMPRODUCT('Control panel'!$AA$7:$AA$37,'Control panel'!AM$7:AM$37)*'Control panel'!AM28","v":0},{"$f":"'Control panel'!$AA28/SUMPRODUCT('Control panel'!$AA$7:$AA$37,'Control panel'!AN$7:AN$37)*'Control panel'!AN28","v":0},{"$f":"'Control panel'!$AA28/SUMPRODUCT('Control panel'!$AA$7:$AA$37,'Control panel'!AO$7:AO$37)*'Control panel'!AO28","v":0},{"$f":"'Control panel'!$AA28/SUMPRODUCT('Control panel'!$AA$7:$AA$37,'Control panel'!AP$7:AP$37)*'Control panel'!AP28","v":2.5350352940560133E-2},{"$f":"'Control panel'!$AA28/SUMPRODUCT('Control panel'!$AA$7:$AA$37,'Control panel'!AQ$7:AQ$37)*'Control panel'!AQ28","v":2.5350352940560133E-2},{"$f":"'Control panel'!$AA28/SUMPRODUCT('Control panel'!$AA$7:$AA$37,'Control panel'!AR$7:AR$37)*'Control panel'!AR28","v":2.5350352940560133E-2},{"$f":"'Control panel'!$AA28/SUMPRODUCT('Control panel'!$AA$7:$AA$37,'Control panel'!AS$7:AS$37)*'Control panel'!AS28","v":2.5350352940560133E-2},{"$f":"'Control panel'!$AA28/SUMPRODUCT('Control panel'!$AA$7:$AA$37,'Control panel'!AT$7:AT$37)*'Control panel'!AT28","v":2.5350352940560133E-2}]
[null,null,null,null,null,null,null,null,null,null,null,null,null,null,null,null,null,null,null,null,null,null,"2025-26",{"$f":"'PTRM Data'!B29","v":"Office Equipment & Furniture"},{"$f":"_xlfn.XLOOKUP(X31,'Control panel'!$L$7:$L$37,'Control panel'!$P$7:$P$37)","v":1},-1.6862845181837501E-2,{"$f":"_xlfn.XLOOKUP(W31,'BBM Costs'!$Q$6:$U$6,_xlfn.XLOOKUP(X31,'BBM Costs'!$P$7:$P$37,'BBM Costs'!$Q$7:$U$37))*_xlfn.XLOOKUP(X31,'Control panel'!$L$7:$L$37,'Control panel'!$M$7:$M$37)","v":0},{"$f":"_xlfn.XLOOKUP(W31,'BBM Costs'!$X$6:$AB$6,_xlfn.XLOOKUP(X31,'BBM Costs'!$W$7:$W$37,'BBM Costs'!$X$7:$AB$37))*_xlfn.XLOOKUP(X31,'Control panel'!$S$7:$S$37,'Control panel'!$T$7:$T$37)","v":0},-1.6862845181837501E-2,null,{"$f":"'PTRM Data'!B29","v":"Office Equipment & Furniture"},{"$f":"'Control panel'!$AA29/SUMPRODUCT('Control panel'!$AA$7:$AA$37,'Control panel'!AB$7:AB$37)*'Control panel'!AB29","v":-6.6125772703846258E-4},{"$f":"'Control panel'!$AA29/SUMPRODUCT('Control panel'!$AA$7:$AA$37,'Control panel'!AC$7:AC$37)*'Control panel'!AC29","v":0},{"$f":"'Control panel'!$AA29/SUMPRODUCT('Control panel'!$AA$7:$AA$37,'Control panel'!AD$7:AD$37)*'Control panel'!AD29","v":0},{"$f":"'Control panel'!$AA29/SUMPRODUCT('Control panel'!$AA$7:$AA$37,'Control panel'!AE$7:AE$37)*'Control panel'!AE29","v":0},{"$f":"'Control panel'!$AA29/SUMPRODUCT('Control panel'!$AA$7:$AA$37,'Control panel'!AF$7:AF$37)*'Control panel'!AF29","v":0},{"$f":"'Control panel'!$AA29/SUMPRODUCT('Control panel'!$AA$7:$AA$37,'Control panel'!AG$7:AG$37)*'Control panel'!AG29","v":-6.6795326320971888E-4},{"$f":"'Control panel'!$AA29/SUMPRODUCT('Control panel'!$AA$7:$AA$37,'Control panel'!AH$7:AH$37)*'Control panel'!AH29","v":0},{"$f":"'Control panel'!$AA29/SUMPRODUCT('Control panel'!$AA$7:$AA$37,'Control panel'!AI$7:AI$37)*'Control panel'!AI29","v":-6.0224690653938953E-4},{"$f":"'Control panel'!$AA29/SUMPRODUCT('Control panel'!$AA$7:$AA$37,'Control panel'!AJ$7:AJ$37)*'Control panel'!AJ29","v":0},{"$f":"'Control panel'!$AA29/SUMPRODUCT('Control panel'!$AA$7:$AA$37,'Control panel'!AK$7:AK$37)*'Control panel'!AK29","v":0},{"$f":"'Control panel'!$AA29/SUMPRODUCT('Control panel'!$AA$7:$AA$37,'Control panel'!AL$7:AL$37)*'Control panel'!AL29","v":-6.0224690653938953E-4},{"$f":"'Control panel'!$AA29/SUMPRODUCT('Control panel'!$AA$7:$AA$37,'Control panel'!AM$7:AM$37)*'Control panel'!AM29","v":0},{"$f":"'Control panel'!$AA29/SUMPRODUCT('Control panel'!$AA$7:$AA$37,'Control panel'!AN$7:AN$37)*'Control panel'!AN29","v":0},{"$f":"'Control panel'!$AA29/SUMPRODUCT('Control panel'!$AA$7:$AA$37,'Control panel'!AO$7:AO$37)*'Control panel'!AO29","v":0},{"$f":"'Control panel'!$AA29/SUMPRODUCT('Control panel'!$AA$7:$AA$37,'Control panel'!AP$7:AP$37)*'Control panel'!AP29","v":-6.0224690653938953E-4},{"$f":"'Control panel'!$AA29/SUMPRODUCT('Control panel'!$AA$7:$AA$37,'Control panel'!AQ$7:AQ$37)*'Control panel'!AQ29","v":-6.0224690653938953E-4},{"$f":"'Control panel'!$AA29/SUMPRODUCT('Control panel'!$AA$7:$AA$37,'Control panel'!AR$7:AR$37)*'Control panel'!AR29","v":-6.0224690653938953E-4},{"$f":"'Control panel'!$AA29/SUMPRODUCT('Control panel'!$AA$7:$AA$37,'Control panel'!AS$7:AS$37)*'Control panel'!AS29","v":-6.0224690653938953E-4},{"$f":"'Control panel'!$AA29/SUMPRODUCT('Control panel'!$AA$7:$AA$37,'Control panel'!AT$7:AT$37)*'Control panel'!AT29","v":-6.0224690653938953E-4}]
[null,null,null,null,null,null,null,null,null,null,null,null,null,null,null,null,null,null,null,null,null,null,"2025-26",{"$f":"'PTRM Data'!B30","v":"Initial Leases (10 yr life)"},{"$f":"_xlfn.XLOOKUP(X32,'Control panel'!$L$7:$L$37,'Control panel'!$P$7:$P$37)","v":1},0,{"$f":"_xlfn.XLOOKUP(W32,'BBM Costs'!$Q$6:$U$6,_xlfn.XLOOKUP(X32,'BBM Costs'!$P$7:$P$37,'BBM Costs'!$Q$7:$U$37))*_xlfn.XLOOKUP(X32,'Control panel'!$L$7:$L$37,'Control panel'!$M$7:$M$37)","v":0},{"$f":"_xlfn.XLOOKUP(W32,'BBM Costs'!$X$6:$AB$6,_xlfn.XLOOKUP(X32,'BBM Costs'!$W$7:$W$37,'BBM Costs'!$X$7:$AB$37))*_xlfn.XLOOKUP(X32,'Control panel'!$S$7:$S$37,'Control panel'!$T$7:$T$37)","v":0},0,null,{"$f":"'PTRM Data'!B30","v":"Initial Leases (10 yr life)"},{"$f":"'Control panel'!$AA30/SUMPRODUCT('Control panel'!$AA$7:$AA$37,'Control panel'!AB$7:AB$37)*'Control panel'!AB30","v":0},{"$f":"'Control panel'!$AA30/SUMPRODUCT('Control panel'!$AA$7:$AA$37,'Control panel'!AC$7:AC$37)*'Control panel'!AC30","v":0},{"$f":"'Control panel'!$AA30/SUMPRODUCT('Control panel'!$AA$7:$AA$37,'Control panel'!AD$7:AD$37)*'Control panel'!AD30","v":0},{"$f":"'Control panel'!$AA30/SUMPRODUCT('Control panel'!$AA$7:$AA$37,'Control panel'!AE$7:AE$37)*'Control panel'!AE30","v":0},{"$f":"'Control panel'!$AA30/SUMPRODUCT('Control panel'!$AA$7:$AA$37,'Control panel'!AF$7:AF$37)*'Control panel'!AF30","v":0},{"$f":"'Control panel'!$AA30/SUMPRODUCT('Control panel'!$AA$7:$AA$37,'Control panel'!AG$7:AG$37)*'Control panel'!AG30","v":0},{"$f":"'Control panel'!$AA30/SUMPRODUCT('Control panel'!$AA$7:$AA$37,'Control panel'!AH$7:AH$37)*'Control panel'!AH30","v":0},{"$f":"'Control panel'!$AA30/SUMPRODUCT('Control panel'!$AA$7:$AA$37,'Control panel'!AI$7:AI$37)*'Control panel'!AI30","v":3.3001235165441571E-3},{"$f":"'Control panel'!$AA30/SUMPRODUCT('Control panel'!$AA$7:$AA$37,'Control panel'!AJ$7:AJ$37)*'Control panel'!AJ30","v":0},{"$f":"'Control panel'!$AA30/SUMPRODUCT('Control panel'!$AA$7:$AA$37,'Control panel'!AK$7:AK$37)*'Control panel'!AK30","v":0},{"$f":"'Control panel'!$AA30/SUMPRODUCT('Control panel'!$AA$7:$AA$37,'Control panel'!AL$7:AL$37)*'Control panel'!AL30","v":3.3001235165441571E-3},{"$f":"'Control panel'!$AA30/SUMPRODUCT('Control panel'!$AA$7:$AA$37,'Control panel'!AM$7:AM$37)*'Control panel'!AM30","v":0},{"$f":"'Control panel'!$AA30/SUMPRODUCT('Control panel'!$AA$7:$AA$37,'Control panel'!AN$7:AN$37)*'Control panel'!AN30","v":0},{"$f":"'Control panel'!$AA30/SUMPRODUCT('Control panel'!$AA$7:$AA$37,'Control panel'!AO$7:AO$37)*'Control panel'!AO30","v":0},{"$f":"'Control panel'!$AA30/SUMPRODUCT('Control panel'!$AA$7:$AA$37,'Control panel'!AP$7:AP$37)*'Control panel'!AP30","v":3.3001235165441571E-3},{"$f":"'Control panel'!$AA30/SUMPRODUCT('Control panel'!$AA$7:$AA$37,'Control panel'!AQ$7:AQ$37)*'Control panel'!AQ30","v":3.3001235165441571E-3},{"$f":"'Control panel'!$AA30/SUMPRODUCT('Control panel'!$AA$7:$AA$37,'Control panel'!AR$7:AR$37)*'Control panel'!AR30","v":3.3001235165441571E-3},{"$f":"'Control panel'!$AA30/SUMPRODUCT('Control panel'!$AA$7:$AA$37,'Control panel'!AS$7:AS$37)*'Control panel'!AS30","v":3.3001235165441571E-3},{"$f":"'Control panel'!$AA30/SUMPRODUCT('Control panel'!$AA$7:$AA$37,'Control panel'!AT$7:AT$37)*'Control panel'!AT30","v":3.3001235165441571E-3}]
[null,null,null,null,null,null,null,null,null,null,null,null,null,null,null,null,null,null,null,null,null,null,"2025-26",{"$f":"'PTRM Data'!B31","v":"Lease Extensions (5yr Life)"},{"$f":"_xlfn.XLOOKUP(X33,'Control panel'!$L$7:$L$37,'Control panel'!$P$7:$P$37)","v":1},0,{"$f":"_xlfn.XLOOKUP(W33,'BBM Costs'!$Q$6:$U$6,_xlfn.XLOOKUP(X33,'BBM Costs'!$P$7:$P$37,'BBM Costs'!$Q$7:$U$37))*_xlfn.XLOOKUP(X33,'Control panel'!$L$7:$L$37,'Control panel'!$M$7:$M$37)","v":0},{"$f":"_xlfn.XLOOKUP(W33,'BBM Costs'!$X$6:$AB$6,_xlfn.XLOOKUP(X33,'BBM Costs'!$W$7:$W$37,'BBM Costs'!$X$7:$AB$37))*_xlfn.XLOOKUP(X33,'Control panel'!$S$7:$S$37,'Control panel'!$T$7:$T$37)","v":0},0,null,{"$f":"'PTRM Data'!B31","v":"Lease Extensions (5yr Life)"},{"$f":"'Control panel'!$AA31/SUMPRODUCT('Control panel'!$AA$7:$AA$37,'Control panel'!AB$7:AB$37)*'Control panel'!AB31","v":0},{"$f":"'Control panel'!$AA31/SUMPRODUCT('Control panel'!$AA$7:$AA$37,'Control panel'!AC$7:AC$37)*'Control panel'!AC31","v":0},{"$f":"'Control panel'!$AA31/SUMPRODUCT('Control panel'!$AA$7:$AA$37,'Control panel'!AD$7:AD$37)*'Control panel'!AD31","v":0},{"$f":"'Control panel'!$AA31/SUMPRODUCT('Control panel'!$AA$7:$AA$37,'Control panel'!AE$7:AE$37)*'Control panel'!AE31","v":0},{"$f":"'Control panel'!$AA31/SUMPRODUCT('Control panel'!$AA$7:$AA$37,'Control panel'!AF$7:AF$37)*'Control panel'!AF31","v":0},{"$f":"'Control panel'!$AA31/SUMPRODUCT('Control panel'!$AA$7:$AA$37,'Control panel'!AG$7:AG$37)*'Control panel'!AG31","v":0},{"$f":"'Control panel'!$AA31/SUMPRODUCT('Control panel'!$AA$7:$AA$37,'Control panel'!AH$7:AH$37)*'Control panel'!AH31","v":0},{"$f":"'Control panel'!$AA31/SUMPRODUCT('Control panel'!$AA$7:$AA$37,'Control panel'!AI$7:AI$37)*'Control panel'!AI31","v":0},{"$f":"'Control panel'!$AA31/SUMPRODUCT('Control panel'!$AA$7:$AA$37,'Control panel'!AJ$7:AJ$37)*'Control panel'!AJ31","v":0},{"$f":"'Control panel'!$AA31/SUMPRODUCT('Control panel'!$AA$7:$AA$37,'Control panel'!AK$7:AK$37)*'Control panel'!AK31","v":0},{"$f":"'Control panel'!$AA31/SUMPRODUCT('Control panel'!$AA$7:$AA$37,'Control panel'!AL$7:AL$37)*'Control panel'!AL31","v":0},{"$f":"'Control panel'!$AA31/SUMPRODUCT('Control panel'!$AA$7:$AA$37,'Control panel'!AM$7:AM$37)*'Control panel'!AM31","v":0},{"$f":"'Control panel'!$AA31/SUMPRODUCT('Control panel'!$AA$7:$AA$37,'Control panel'!AN$7:AN$37)*'Control panel'!AN31","v":0},{"$f":"'Control panel'!$AA31/SUMPRODUCT('Control panel'!$AA$7:$AA$37,'Control panel'!AO$7:AO$37)*'Control panel'!AO31","v":0},{"$f":"'Control panel'!$AA31/SUMPRODUCT('Control panel'!$AA$7:$AA$37,'Control panel'!AP$7:AP$37)*'Control panel'!AP31","v":0},{"$f":"'Control panel'!$AA31/SUMPRODUCT('Control panel'!$AA$7:$AA$37,'Control panel'!AQ$7:AQ$37)*'Control panel'!AQ31","v":0},{"$f":"'Control panel'!$AA31/SUMPRODUCT('Control panel'!$AA$7:$AA$37,'Control panel'!AR$7:AR$37)*'Control panel'!AR31","v":0},{"$f":"'Control panel'!$AA31/SUMPRODUCT('Control panel'!$AA$7:$AA$37,'Control panel'!AS$7:AS$37)*'Control panel'!AS31","v":0},{"$f":"'Control panel'!$AA31/SUMPRODUCT('Control panel'!$AA$7:$AA$37,'Control panel'!AT$7:AT$37)*'Control panel'!AT31","v":0}]
[null,null,null,null,null,null,null,null,null,null,null,null,null,null,null,null,null,null,null,null,null,null,"2025-26",{"$f":"'PTRM Data'!B32","v":"Land & Easements - combined"},{"$f":"_xlfn.XLOOKUP(X34,'Control panel'!$L$7:$L$37,'Control panel'!$P$7:$P$37)","v":1},0,{"$f":"_xlfn.XLOOKUP(W34,'BBM Costs'!$Q$6:$U$6,_xlfn.XLOOKUP(X34,'BBM Costs'!$P$7:$P$37,'BBM Costs'!$Q$7:$U$37))*_xlfn.XLOOKUP(X34,'Control panel'!$L$7:$L$37,'Control panel'!$M$7:$M$37)","v":0},{"$f":"_xlfn.XLOOKUP(W34,'BBM Costs'!$X$6:$AB$6,_xlfn.XLOOKUP(X34,'BBM Costs'!$W$7:$W$37,'BBM Costs'!$X$7:$AB$37))*_xlfn.XLOOKUP(X34,'Control panel'!$S$7:$S$37,'Control panel'!$T$7:$T$37)","v":0},0,null,{"$f":"'PTRM Data'!B32","v":"Land & Easements - combined"},{"$f":"'Control panel'!$AA32/SUMPRODUCT('Control panel'!$AA$7:$AA$37,'Control panel'!AB$7:AB$37)*'Control panel'!AB32","v":0},{"$f":"'Control panel'!$AA32/SUMPRODUCT('Control panel'!$AA$7:$AA$37,'Control panel'!AC$7:AC$37)*'Control panel'!AC32","v":0},{"$f":"'Control panel'!$AA32/SUMPRODUCT('Control panel'!$AA$7:$AA$37,'Control panel'!AD$7:AD$37)*'Control panel'!AD32","v":0},{"$f":"'Control panel'!$AA32/SUMPRODUCT('Control panel'!$AA$7:$AA$37,'Control panel'!AE$7:AE$37)*'Control panel'!AE32","v":0},{"$f":"'Control panel'!$AA32/SUMPRODUCT('Control panel'!$AA$7:$AA$37,'Control panel'!AF$7:AF$37)*'Control panel'!AF32","v":0},{"$f":"'Control panel'!$AA32/SUMPRODUCT('Control panel'!$AA$7:$AA$37,'Control panel'!AG$7:AG$37)*'Control panel'!AG32","v":0},{"$f":"'Control panel'!$AA32/SUMPRODUCT('Control panel'!$AA$7:$AA$37,'Control panel'!AH$7:AH$37)*'Control panel'!AH32","v":0},{"$f":"'Control panel'!$AA32/SUMPRODUCT('Control panel'!$AA$7:$AA$37,'Control panel'!AI$7:AI$37)*'Control panel'!AI32","v":2.0840782392120487E-3},{"$f":"'Control panel'!$AA32/SUMPRODUCT('Control panel'!$AA$7:$AA$37,'Control panel'!AJ$7:AJ$37)*'Control panel'!AJ32","v":0},{"$f":"'Control panel'!$AA32/SUMPRODUCT('Control panel'!$AA$7:$AA$37,'Control panel'!AK$7:AK$37)*'Control panel'!AK32","v":0},{"$f":"'Control panel'!$AA32/SUMPRODUCT('Control panel'!$AA$7:$AA$37,'Control panel'!AL$7:AL$37)*'Control panel'!AL32","v":2.0840782392120487E-3},{"$f":"'Control panel'!$AA32/SUMPRODUCT('Control panel'!$AA$7:$AA$37,'Control panel'!AM$7:AM$37)*'Control panel'!AM32","v":0},{"$f":"'Control panel'!$AA32/SUMPRODUCT('Control panel'!$AA$7:$AA$37,'Control panel'!AN$7:AN$37)*'Control panel'!AN32","v":0},{"$f":"'Control panel'!$AA32/SUMPRODUCT('Control panel'!$AA$7:$AA$37,'Control panel'!AO$7:AO$37)*'Control panel'!AO32","v":0},{"$f":"'Control panel'!$AA32/SUMPRODUCT('Control panel'!$AA$7:$AA$37,'Control panel'!AP$7:AP$37)*'Control panel'!AP32","v":2.0840782392120487E-3},{"$f":"'Control panel'!$AA32/SUMPRODUCT('Control panel'!$AA$7:$AA$37,'Control panel'!AQ$7:AQ$37)*'Control panel'!AQ32","v":2.0840782392120487E-3},{"$f":"'Control panel'!$AA32/SUMPRODUCT('Control panel'!$AA$7:$AA$37,'Control panel'!AR$7:AR$37)*'Control panel'!AR32","v":2.0840782392120487E-3},{"$f":"'Control panel'!$AA32/SUMPRODUCT('Control panel'!$AA$7:$AA$37,'Control panel'!AS$7:AS$37)*'Control panel'!AS32","v":2.0840782392120487E-3},{"$f":"'Control panel'!$AA32/SUMPRODUCT('Control panel'!$AA$7:$AA$37,'Control panel'!AT$7:AT$37)*'Control panel'!AT32","v":2.0840782392120487E-3}]
[null,null,null,null,null,null,null,null,null,null,null,null,null,null,null,null,null,null,null,null,null,null,"2025-26",{"$f":"'PTRM Data'!B33","v":"Communications"},{"$f":"_xlfn.XLOOKUP(X35,'Control panel'!$L$7:$L$37,'Control panel'!$P$7:$P$37)","v":1},0,{"$f":"_xlfn.XLOOKUP(W35,'BBM Costs'!$Q$6:$U$6,_xlfn.XLOOKUP(X35,'BBM Costs'!$P$7:$P$37,'BBM Costs'!$Q$7:$U$37))*_xlfn.XLOOKUP(X35,'Control panel'!$L$7:$L$37,'Control panel'!$M$7:$M$37)","v":0},{"$f":"_xlfn.XLOOKUP(W35,'BBM Costs'!$X$6:$AB$6,_xlfn.XLOOKUP(X35,'BBM Costs'!$W$7:$W$37,'BBM Costs'!$X$7:$AB$37))*_xlfn.XLOOKUP(X35,'Control panel'!$S$7:$S$37,'Control panel'!$T$7:$T$37)","v":0},0,null,{"$f":"'PTRM Data'!B33","v":"Communications"},{"$f":"'Control panel'!$AA33/SUMPRODUCT('Control panel'!$AA$7:$AA$37,'Control panel'!AB$7:AB$37)*'Control panel'!AB33","v":0},{"$f":"'Control panel'!$AA33/SUMPRODUCT('Control panel'!$AA$7:$AA$37,'Control panel'!AC$7:AC$37)*'Control panel'!AC33","v":0},{"$f":"'Control panel'!$AA33/SUMPRODUCT('Control panel'!$AA$7:$AA$37,'Control panel'!AD$7:AD$37)*'Control panel'!AD33","v":0},{"$f":"'Control panel'!$AA33/SUMPRODUCT('Control panel'!$AA$7:$AA$37,'Control panel'!AE$7:AE$37)*'Control panel'!AE33","v":0},{"$f":"'Control panel'!$AA33/SUMPRODUCT('Control panel'!$AA$7:$AA$37,'Control panel'!AF$7:AF$37)*'Control panel'!AF33","v":0},{"$f":"'Control panel'!$AA33/SUMPRODUCT('Control panel'!$AA$7:$AA$37,'Control panel'!AG$7:AG$37)*'Control panel'!AG33","v":0},{"$f":"'Control panel'!$AA33/SUMPRODUCT('Control panel'!$AA$7:$AA$37,'Control panel'!AH$7:AH$37)*'Control panel'!AH33","v":0},{"$f":"'Control panel'!$AA33/SUMPRODUCT('Control panel'!$AA$7:$AA$37,'Control panel'!AI$7:AI$37)*'Control panel'!AI33","v":1.0387397465138238E-2},{"$f":"'Control panel'!$AA33/SUMPRODUCT('Control panel'!$AA$7:$AA$37,'Control panel'!AJ$7:AJ$37)*'Control panel'!AJ33","v":0},{"$f":"'Control panel'!$AA33/SUMPRODUCT('Control panel'!$AA$7:$AA$37,'Control panel'!AK$7:AK$37)*'Control panel'!AK33","v":0},{"$f":"'Control panel'!$AA33/SUMPRODUCT('Control panel'!$AA$7:$AA$37,'Control panel'!AL$7:AL$37)*'Control panel'!AL33","v":1.0387397465138238E-2},{"$f":"'Control panel'!$AA33/SUMPRODUCT('Control panel'!$AA$7:$AA$37,'Control panel'!AM$7:AM$37)*'Control panel'!AM33","v":0},{"$f":"'Control panel'!$AA33/SUMPRODUCT('Control panel'!$AA$7:$AA$37,'Control panel'!AN$7:AN$37)*'Control panel'!AN33","v":0},{"$f":"'Control panel'!$AA33/SUMPRODUCT('Control panel'!$AA$7:$AA$37,'Control panel'!AO$7:AO$37)*'Control panel'!AO33","v":0},{"$f":"'Control panel'!$AA33/SUMPRODUCT('Control panel'!$AA$7:$AA$37,'Control panel'!AP$7:AP$37)*'Control panel'!AP33","v":1.0387397465138238E-2},{"$f":"'Control panel'!$AA33/SUMPRODUCT('Control panel'!$AA$7:$AA$37,'Control panel'!AQ$7:AQ$37)*'Control panel'!AQ33","v":1.0387397465138238E-2},{"$f":"'Control panel'!$AA33/SUMPRODUCT('Control panel'!$AA$7:$AA$37,'Control panel'!AR$7:AR$37)*'Control panel'!AR33","v":1.0387397465138238E-2},{"$f":"'Control panel'!$AA33/SUMPRODUCT('Control panel'!$AA$7:$AA$37,'Control panel'!AS$7:AS$37)*'Control panel'!AS33","v":1.0387397465138238E-2},{"$f":"'Control panel'!$AA33/SUMPRODUCT('Control panel'!$AA$7:$AA$37,'Control panel'!AT$7:AT$37)*'Control panel'!AT33","v":1.0387397465138238E-2}]
[null,null,null,null,null,null,null,null,null,null,null,null,null,null,null,null,null,null,null,null,null,null,"2025-26",{"$f":"'PTRM Data'!B34","v":"In-house software"},{"$f":"_xlfn.XLOOKUP(X36,'Control panel'!$L$7:$L$37,'Control panel'!$P$7:$P$37)","v":1},0,{"$f":"_xlfn.XLOOKUP(W36,'BBM Costs'!$Q$6:$U$6,_xlfn.XLOOKUP(X36,'BBM Costs'!$P$7:$P$37,'BBM Costs'!$Q$7:$U$37))*_xlfn.XLOOKUP(X36,'Control panel'!$L$7:$L$37,'Control panel'!$M$7:$M$37)","v":0},{"$f":"_xlfn.XLOOKUP(W36,'BBM Costs'!$X$6:$AB$6,_xlfn.XLOOKUP(X36,'BBM Costs'!$W$7:$W$37,'BBM Costs'!$X$7:$AB$37))*_xlfn.XLOOKUP(X36,'Control panel'!$S$7:$S$37,'Control panel'!$T$7:$T$37)","v":0},0,null,{"$f":"'PTRM Data'!B34","v":"In-house software"},{"$f":"'Control panel'!$AA34/SUMPRODUCT('Control panel'!$AA$7:$AA$37,'Control panel'!AB$7:AB$37)*'Control panel'!AB34","v":0},{"$f":"'Control panel'!$AA34/SUMPRODUCT('Control panel'!$AA$7:$AA$37,'Control panel'!AC$7:AC$37)*'Control panel'!AC34","v":0},{"$f":"'Control panel'!$AA34/SUMPRODUCT('Control panel'!$AA$7:$AA$37,'Control panel'!AD$7:AD$37)*'Control panel'!AD34","v":0},{"$f":"'Control panel'!$AA34/SUMPRODUCT('Control panel'!$AA$7:$AA$37,'Control panel'!AE$7:AE$37)*'Control panel'!AE34","v":0},{"$f":"'Control panel'!$AA34/SUMPRODUCT('Control panel'!$AA$7:$AA$37,'Control panel'!AF$7:AF$37)*'Control panel'!AF34","v":0},{"$f":"'Control panel'!$AA34/SUMPRODUCT('Control panel'!$AA$7:$AA$37,'Control panel'!AG$7:AG$37)*'Control panel'!AG34","v":0},{"$f":"'Control panel'!$AA34/SUMPRODUCT('Control panel'!$AA$7:$AA$37,'Control panel'!AH$7:AH$37)*'Control panel'!AH34","v":0},{"$f":"'Control panel'!$AA34/SUMPRODUCT('Control panel'!$AA$7:$AA$37,'Control panel'!AI$7:AI$37)*'Control panel'!AI34","v":1.1628786446019059E-2},{"$f":"'Control panel'!$AA34/SUMPRODUCT('Control panel'!$AA$7:$AA$37,'Control panel'!AJ$7:AJ$37)*'Control panel'!AJ34","v":0},{"$f":"'Control panel'!$AA34/SUMPRODUCT('Control panel'!$AA$7:$AA$37,'Control panel'!AK$7:AK$37)*'Control panel'!AK34","v":0},{"$f":"'Control panel'!$AA34/SUMPRODUCT('Control panel'!$AA$7:$AA$37,'Control panel'!AL$7:AL$37)*'Control panel'!AL34","v":1.1628786446019059E-2},{"$f":"'Control panel'!$AA34/SUMPRODUCT('Control panel'!$AA$7:$AA$37,'Control panel'!AM$7:AM$37)*'Control panel'!AM34","v":0},{"$f":"'Control panel'!$AA34/SUMPRODUCT('Control panel'!$AA$7:$AA$37,'Control panel'!AN$7:AN$37)*'Control panel'!AN34","v":0},{"$f":"'Control panel'!$AA34/SUMPRODUCT('Control panel'!$AA$7:$AA$37,'Control panel'!AO$7:AO$37)*'Control panel'!AO34","v":0},{"$f":"'Control panel'!$AA34/SUMPRODUCT('Control panel'!$AA$7:$AA$37,'Control panel'!AP$7:AP$37)*'Control panel'!AP34","v":1.1628786446019059E-2},{"$f":"'Control panel'!$AA34/SUMPRODUCT('Control panel'!$AA$7:$AA$37,'Control panel'!AQ$7:AQ$37)*'Control panel'!AQ34","v":1.1628786446019059E-2},{"$f":"'Control panel'!$AA34/SUMPRODUCT('Control panel'!$AA$7:$AA$37,'Control panel'!AR$7:AR$37)*'Control panel'!AR34","v":1.1628786446019059E-2},{"$f":"'Control panel'!$AA34/SUMPRODUCT('Control panel'!$AA$7:$AA$37,'Control panel'!AS$7:AS$37)*'Control panel'!AS34","v":1.1628786446019059E-2},{"$f":"'Control panel'!$AA34/SUMPRODUCT('Control panel'!$AA$7:$AA$37,'Control panel'!AT$7:AT$37)*'Control panel'!AT34","v":1.1628786446019059E-2}]
[null,null,null,null,null,null,null,null,null,null,null,null,null,null,null,null,null,null,null,null,null,null,"2025-26",{"$f":"'PTRM Data'!B35","v":"IT Systems"},{"$f":"_xlfn.XLOOKUP(X37,'Control panel'!$L$7:$L$37,'Control panel'!$P$7:$P$37)","v":1},0,{"$f":"_xlfn.XLOOKUP(W37,'BBM Costs'!$Q$6:$U$6,_xlfn.XLOOKUP(X37,'BBM Costs'!$P$7:$P$37,'BBM Costs'!$Q$7:$U$37))*_xlfn.XLOOKUP(X37,'Control panel'!$L$7:$L$37,'Control panel'!$M$7:$M$37)","v":0},{"$f":"_xlfn.XLOOKUP(W37,'BBM Costs'!$X$6:$AB$6,_xlfn.XLOOKUP(X37,'BBM Costs'!$W$7:$W$37,'BBM Costs'!$X$7:$AB$37))*_xlfn.XLOOKUP(X37,'Control panel'!$S$7:$S$37,'Control panel'!$T$7:$T$37)","v":0},0,null,{"$f":"'PTRM Data'!B35","v":"IT Systems"},{"$f":"'Control panel'!$AA35/SUMPRODUCT('Control panel'!$AA$7:$AA$37,'Control panel'!AB$7:AB$37)*'Control panel'!AB35","v":0},{"$f":"'Control panel'!$AA35/SUMPRODUCT('Control panel'!$AA$7:$AA$37,'Control panel'!AC$7:AC$37)*'Control panel'!AC35","v":0},{"$f":"'Control panel'!$AA35/SUMPRODUCT('Control panel'!$AA$7:$AA$37,'Control panel'!AD$7:AD$37)*'Control panel'!AD35","v":0},{"$f":"'Control panel'!$AA35/SUMPRODUCT('Control panel'!$AA$7:$AA$37,'Control panel'!AE$7:AE$37)*'Control panel'!AE35","v":0},{"$f":"'Control panel'!$AA35/SUMPRODUCT('Control panel'!$AA$7:$AA$37,'Control panel'!AF$7:AF$37)*'Control panel'!AF35","v":0},{"$f":"'Control panel'!$AA35/SUMPRODUCT('Control panel'!$AA$7:$AA$37,'Control panel'!AG$7:AG$37)*'Control panel'!AG35","v":0},{"$f":"'Control panel'!$AA35/SUMPRODUCT('Control panel'!$AA$7:$AA$37,'Control panel'!AH$7:AH$37)*'Control panel'!AH35","v":0},{"$f":"'Control panel'!$AA35/SUMPRODUCT('Control panel'!$AA$7:$AA$37,'Control panel'!AI$7:AI$37)*'Control panel'!AI35","v":4.5564333720003405E-4},{"$f":"'Control panel'!$AA35/SUMPRODUCT('Control panel'!$AA$7:$AA$37,'Control panel'!AJ$7:AJ$37)*'Control panel'!AJ35","v":0},{"$f":"'Control panel'!$AA35/SUMPRODUCT('Control panel'!$AA$7:$AA$37,'Control panel'!AK$7:AK$37)*'Control panel'!AK35","v":0},{"$f":"'Control panel'!$AA35/SUMPRODUCT('Control panel'!$AA$7:$AA$37,'Control panel'!AL$7:AL$37)*'Control panel'!AL35","v":4.5564333720003405E-4},{"$f":"'Control panel'!$AA35/SUMPRODUCT('Control panel'!$AA$7:$AA$37,'Control panel'!AM$7:AM$37)*'Control panel'!AM35","v":0},{"$f":"'Control panel'!$AA35/SUMPRODUCT('Control panel'!$AA$7:$AA$37,'Control panel'!AN$7:AN$37)*'Control panel'!AN35","v":0},{"$f":"'Control panel'!$AA35/SUMPRODUCT('Control panel'!$AA$7:$AA$37,'Control panel'!AO$7:AO$37)*'Control panel'!AO35","v":0},{"$f":"'Control panel'!$AA35/SUMPRODUCT('Control panel'!$AA$7:$AA$37,'Control panel'!AP$7:AP$37)*'Control panel'!AP35","v":4.5564333720003405E-4},{"$f":"'Control panel'!$AA35/SUMPRODUCT('Control panel'!$AA$7:$AA$37,'Control panel'!AQ$7:AQ$37)*'Control panel'!AQ35","v":4.5564333720003405E-4},{"$f":"'Control panel'!$AA35/SUMPRODUCT('Control panel'!$AA$7:$AA$37,'Control panel'!AR$7:AR$37)*'Control panel'!AR35","v":4.5564333720003405E-4},{"$f":"'Control panel'!$AA35/SUMPRODUCT('Control panel'!$AA$7:$AA$37,'Control panel'!AS$7:AS$37)*'Control panel'!AS35","v":4.5564333720003405E-4},{"$f":"'Control panel'!$AA35/SUMPRODUCT('Control panel'!$AA$7:$AA$37,'Control panel'!AT$7:AT$37)*'Control panel'!AT35","v":4.5564333720003405E-4}]
[null,null,null,null,null,null,null,null,null,null,null,null,null,null,null,null,null,null,null,null,null,null,"2025-26",{"$f":"'PTRM Data'!B36","v":"Legacy ICT Assets"},{"$f":"_xlfn.XLOOKUP(X38,'Control panel'!$L$7:$L$37,'Control panel'!$P$7:$P$37)","v":1},0,{"$f":"_xlfn.XLOOKUP(W38,'BBM Costs'!$Q$6:$U$6,_xlfn.XLOOKUP(X38,'BBM Costs'!$P$7:$P$37,'BBM Costs'!$Q$7:$U$37))*_xlfn.XLOOKUP(X38,'Control panel'!$L$7:$L$37,'Control panel'!$M$7:$M$37)","v":0},{"$f":"_xlfn.XLOOKUP(W38,'BBM Costs'!$X$6:$AB$6,_xlfn.XLOOKUP(X38,'BBM Costs'!$W$7:$W$37,'BBM Costs'!$X$7:$AB$37))*_xlfn.XLOOKUP(X38,'Control panel'!$S$7:$S$37,'Control panel'!$T$7:$T$37)","v":0},0,null,{"$f":"'PTRM Data'!B36","v":"Legacy ICT Assets"},{"$f":"'Control panel'!$AA36/SUMPRODUCT('Control panel'!$AA$7:$AA$37,'Control panel'!AB$7:AB$37)*'Control panel'!AB36","v":0},{"$f":"'Control panel'!$AA36/SUMPRODUCT('Control panel'!$AA$7:$AA$37,'Control panel'!AC$7:AC$37)*'Control panel'!AC36","v":0},{"$f":"'Control panel'!$AA36/SUMPRODUCT('Control panel'!$AA$7:$AA$37,'Control panel'!AD$7:AD$37)*'Control panel'!AD36","v":0},{"$f":"'Control panel'!$AA36/SUMPRODUCT('Control panel'!$AA$7:$AA$37,'Control panel'!AE$7:AE$37)*'Control panel'!AE36","v":0},{"$f":"'Control panel'!$AA36/SUMPRODUCT('Control panel'!$AA$7:$AA$37,'Control panel'!AF$7:AF$37)*'Control panel'!AF36","v":0},{"$f":"'Control panel'!$AA36/SUMPRODUCT('Control panel'!$AA$7:$AA$37,'Control panel'!AG$7:AG$37)*'Control panel'!AG36","v":0},{"$f":"'Control panel'!$AA36/SUMPRODUCT('Control panel'!$AA$7:$AA$37,'Control panel'!AH$7:AH$37)*'Control panel'!AH36","v":0},{"$f":"'Control panel'!$AA36/SUMPRODUCT('Control panel'!$AA$7:$AA$37,'Control panel'!AI$7:AI$37)*'Control panel'!AI36","v":4.9448983709103767E-3},{"$f":"'Control panel'!$AA36/SUMPRODUCT('Control panel'!$AA$7:$AA$37,'Control panel'!AJ$7:AJ$37)*'Control panel'!AJ36","v":0},{"$f":"'Control panel'!$AA36/SUMPRODUCT('Control panel'!$AA$7:$AA$37,'Control panel'!AK$7:AK$37)*'Control panel'!AK36","v":0},{"$f":"'Control panel'!$AA36/SUMPRODUCT('Control panel'!$AA$7:$AA$37,'Control panel'!AL$7:AL$37)*'Control panel'!AL36","v":4.9448983709103767E-3},{"$f":"'Control panel'!$AA36/SUMPRODUCT('Control panel'!$AA$7:$AA$37,'Control panel'!AM$7:AM$37)*'Control panel'!AM36","v":0},{"$f":"'Control panel'!$AA36/SUMPRODUCT('Control panel'!$AA$7:$AA$37,'Control panel'!AN$7:AN$37)*'Control panel'!AN36","v":0},{"$f":"'Control panel'!$AA36/SUMPRODUCT('Control panel'!$AA$7:$AA$37,'Control panel'!AO$7:AO$37)*'Control panel'!AO36","v":0},{"$f":"'Control panel'!$AA36/SUMPRODUCT('Control panel'!$AA$7:$AA$37,'Control panel'!AP$7:AP$37)*'Control panel'!AP36","v":4.9448983709103767E-3},{"$f":"'Control panel'!$AA36/SUMPRODUCT('Control panel'!$AA$7:$AA$37,'Control panel'!AQ$7:AQ$37)*'Control panel'!AQ36","v":4.9448983709103767E-3},{"$f":"'Control panel'!$AA36/SUMPRODUCT('Control panel'!$AA$7:$AA$37,'Control panel'!AR$7:AR$37)*'Control panel'!AR36","v":4.9448983709103767E-3},{"$f":"'Control panel'!$AA36/SUMPRODUCT('Control panel'!$AA$7:$AA$37,'Control panel'!AS$7:AS$37)*'Control panel'!AS36","v":4.9448983709103767E-3},{"$f":"'Control panel'!$AA36/SUMPRODUCT('Control panel'!$AA$7:$AA$37,'Control panel'!AT$7:AT$37)*'Control panel'!AT36","v":4.9448983709103767E-3}]
[null,null,null,null,null,null,null,null,null,null,null,null,null,null,null,null,null,null,null,null,null,null,"2025-26",{"$f":"'PTRM Data'!B37","v":"Buildings - capital works"},{"$f":"_xlfn.XLOOKUP(X39,'Control panel'!$L$7:$L$37,'Control panel'!$P$7:$P$37)","v":1},0,{"$f":"_xlfn.XLOOKUP(W39,'BBM Costs'!$Q$6:$U$6,_xlfn.XLOOKUP(X39,'BBM Costs'!$P$7:$P$37,'BBM Costs'!$Q$7:$U$37))*_xlfn.XLOOKUP(X39,'Control panel'!$L$7:$L$37,'Control panel'!$M$7:$M$37)","v":0},{"$f":"_xlfn.XLOOKUP(W39,'BBM Costs'!$X$6:$AB$6,_xlfn.XLOOKUP(X39,'BBM Costs'!$W$7:$W$37,'BBM Costs'!$X$7:$AB$37))*_xlfn.XLOOKUP(X39,'Control panel'!$S$7:$S$37,'Control panel'!$T$7:$T$37)","v":0},{"$f":"SUM(Z39:AB39)","v":0},null,{"$f":"'PTRM Data'!B37","v":"Buildings - capital works"},{"$f":"'Control panel'!$AA37/SUMPRODUCT('Control panel'!$AA$7:$AA$37,'Control panel'!AB$7:AB$37)*'Control panel'!AB37","v":0},{"$f":"'Control panel'!$AA37/SUMPRODUCT('Control panel'!$AA$7:$AA$37,'Control panel'!AC$7:AC$37)*'Control panel'!AC37","v":0},{"$f":"'Control panel'!$AA37/SUMPRODUCT('Control panel'!$AA$7:$AA$37,'Control panel'!AD$7:AD$37)*'Control panel'!AD37","v":0},{"$f":"'Control panel'!$AA37/SUMPRODUCT('Control panel'!$AA$7:$AA$37,'Control panel'!AE$7:AE$37)*'Control panel'!AE37","v":0},{"$f":"'Control panel'!$AA37/SUMPRODUCT('Control panel'!$AA$7:$AA$37,'Control panel'!AF$7:AF$37)*'Control panel'!AF37","v":0},{"$f":"'Control panel'!$AA37/SUMPRODUCT('Control panel'!$AA$7:$AA$37,'Control panel'!AG$7:AG$37)*'Control panel'!AG37","v":0},{"$f":"'Control panel'!$AA37/SUMPRODUCT('Control panel'!$AA$7:$AA$37,'Control panel'!AH$7:AH$37)*'Control panel'!AH37","v":0},{"$f":"'Control panel'!$AA37/SUMPRODUCT('Control panel'!$AA$7:$AA$37,'Control panel'!AI$7:AI$37)*'Control panel'!AI37","v":5.2082365548125949E-3},{"$f":"'Control panel'!$AA37/SUMPRODUCT('Control panel'!$AA$7:$AA$37,'Control panel'!AJ$7:AJ$37)*'Control panel'!AJ37","v":0},{"$f":"'Control panel'!$AA37/SUMPRODUCT('Control panel'!$AA$7:$AA$37,'Control panel'!AK$7:AK$37)*'Control panel'!AK37","v":0},{"$f":"'Control panel'!$AA37/SUMPRODUCT('Control panel'!$AA$7:$AA$37,'Control panel'!AL$7:AL$37)*'Control panel'!AL37","v":5.2082365548125949E-3},{"$f":"'Control panel'!$AA37/SUMPRODUCT('Control panel'!$AA$7:$AA$37,'Control panel'!AM$7:AM$37)*'Control panel'!AM37","v":0},{"$f":"'Control panel'!$AA37/SUMPRODUCT('Control panel'!$AA$7:$AA$37,'Control panel'!AN$7:AN$37)*'Control panel'!AN37","v":0},{"$f":"'Control panel'!$AA37/SUMPRODUCT('Control panel'!$AA$7:$AA$37,'Control panel'!AO$7:AO$37)*'Control panel'!AO37","v":0},{"$f":"'Control panel'!$AA37/SUMPRODUCT('Control panel'!$AA$7:$AA$37,'Control panel'!AP$7:AP$37)*'Control panel'!AP37","v":5.2082365548125949E-3},{"$f":"'Control panel'!$AA37/SUMPRODUCT('Control panel'!$AA$7:$AA$37,'Control panel'!AQ$7:AQ$37)*'Control panel'!AQ37","v":5.2082365548125949E-3},{"$f":"'Control panel'!$AA37/SUMPRODUCT('Control panel'!$AA$7:$AA$37,'Control panel'!AR$7:AR$37)*'Control panel'!AR37","v":5.2082365548125949E-3},{"$f":"'Control panel'!$AA37/SUMPRODUCT('Control panel'!$AA$7:$AA$37,'Control panel'!AS$7:AS$37)*'Control panel'!AS37","v":5.2082365548125949E-3},{"$f":"'Control panel'!$AA37/SUMPRODUCT('Control panel'!$AA$7:$AA$37,'Control panel'!AT$7:AT$37)*'Control panel'!AT37","v":5.2082365548125949E-3}]
[null,null,null,null,null,null,null,null,null,null,null,null,null,null,null,null,null,null,null,null,null,null,"2026-27",{"$f":"'PTRM Data'!B7","v":"Overhead Sub-Transmission Lines"},{"$f":"_xlfn.XLOOKUP(X40,'Control panel'!$L$7:$L$37,'Control panel'!$P$7:$P$37)","v":1},8.0799022664280749,{"$f":"_xlfn.XLOOKUP(W40,'BBM Costs'!$Q$6:$U$6,_xlfn.XLOOKUP(X40,'BBM Costs'!$P$7:$P$37,'BBM Costs'!$Q$7:$U$37))*_xlfn.XLOOKUP(X40,'Control panel'!$L$7:$L$37,'Control panel'!$M$7:$M$37)","v":0},{"$f":"_xlfn.XLOOKUP(W40,'BBM Costs'!$X$6:$AB$6,_xlfn.XLOOKUP(X40,'BBM Costs'!$W$7:$W$37,'BBM Costs'!$X$7:$AB$37))*_xlfn.XLOOKUP(X40,'Control panel'!$S$7:$S$37,'Control panel'!$T$7:$T$37)","v":0},8.0799022664280749]
[null,null,null,null,null,null,null,null,null,null,null,null,null,null,null,null,null,null,null,null,null,null,"2026-27",{"$f":"'PTRM Data'!B8","v":"Underground Sub-Transmission Cables"},{"$f":"_xlfn.XLOOKUP(X41,'Control panel'!$L$7:$L$37,'Control panel'!$P$7:$P$37)","v":1},0.35625955380385105,{"$f":"_xlfn.XLOOKUP(W41,'BBM Costs'!$Q$6:$U$6,_xlfn.XLOOKUP(X41,'BBM Costs'!$P$7:$P$37,'BBM Costs'!$Q$7:$U$37))*_xlfn.XLOOKUP(X41,'Control panel'!$L$7:$L$37,'Control panel'!$M$7:$M$37)","v":0},{"$f":"_xlfn.XLOOKUP(W41,'BBM Costs'!$X$6:$AB$6,_xlfn.XLOOKUP(X41,'BBM Costs'!$W$7:$W$37,'BBM Costs'!$X$7:$AB$37))*_xlfn.XLOOKUP(X41,'Control panel'!$S$7:$S$37,'Control panel'!$T$7:$T$37)","v":0},0.35625955380385105]
[null,null,null,null,null,null,null,null,null,null,null,null,null,null,null,null,null,null,null,null,null,null,"2026-27",{"$f":"'PTRM Data'!B9","v":"Overhead Distribution Lines"},{"$f":"_xlfn.XLOOKUP(X42,'Control panel'!$L$7:$L$37,'Control panel'!$P$7:$P$37)","v":0.57000000000000006},33.127464256291667,{"$f":"_xlfn.XLOOKUP(W42,'BBM Costs'!$Q$6:$U$6,_xlfn.XLOOKUP(X42,'BBM Costs'!$P$7:$P$37,'BBM Costs'!$Q$7:$U$37))*_xlfn.XLOOKUP(X42,'Control panel'!$L$7:$L$37,'Control panel'!$M$7:$M$37)","v":4.4064872718579835},{"$f":"_xlfn.XLOOKUP(W42,'BBM Costs'!$X$6:$AB$6,_xlfn.XLOOKUP(X42,'BBM Costs'!$W$7:$W$37,'BBM Costs'!$X$7:$AB$37))*_xlfn.XLOOKUP(X42,'Control panel'!$S$7:$S$37,'Control panel'!$T$7:$T$37)","v":181.59903055516966},219.13298208331932]
[null,null,null,null,null,null,null,null,null,null,null,null,null,null,null,null,null,null,null,null,null,null,"2026-27",{"$f":"'PTRM Data'!B10","v":"Underground Distribution Cables"},{"$f":"_xlfn.XLOOKUP(X43,'Control panel'!$L$7:$L$37,'Control panel'!$P$7:$P$37)","v":0.57000000000000006},5.8577446509811519,{"$f":"_xlfn.XLOOKUP(W43,'BBM Costs'!$Q$6:$U$6,_xlfn.XLOOKUP(X43,'BBM Costs'!$P$7:$P$37,'BBM Costs'!$Q$7:$U$37))*_xlfn.XLOOKUP(X43,'Control panel'!$L$7:$L$37,'Control panel'!$M$7:$M$37)","v":-1.2896410615775098},{"$f":"_xlfn.XLOOKUP(W43,'BBM Costs'!$X$6:$AB$6,_xlfn.XLOOKUP(X43,'BBM Costs'!$W$7:$W$37,'BBM Costs'!$X$7:$AB$37))*_xlfn.XLOOKUP(X43,'Control panel'!$S$7:$S$37,'Control panel'!$T$7:$T$37)","v":30.792455358228921},35.360558947632562]
[null,null,null,null,null,null,null,null,null,null,null,null,null,null,null,null,null,null,null,null,null,null,"2026-27",{"$f":"'PTRM Data'!B11","v":"Distribution Equipment"},{"$f":"_xlfn.XLOOKUP(X44,'Control panel'!$L$7:$L$37,'Control panel'!$P$7:$P$37)","v":0.57000000000000006},0.12390788700078118,{"$f":"_xlfn.XLOOKUP(W44,'BBM Costs'!$Q$6:$U$6,_xlfn.XLOOKUP(X44,'BBM Costs'!$P$7:$P$37,'BBM Costs'!$Q$7:$U$37))*_xlfn.XLOOKUP(X44,'Control panel'!$L$7:$L$37,'Control panel'!$M$7:$M$37)","v":0.64060136668410939},{"$f":"_xlfn.XLOOKUP(W44,'BBM Costs'!$X$6:$AB$6,_xlfn.XLOOKUP(X44,'BBM Costs'!$W$7:$W$37,'BBM Costs'!$X$7:$AB$37))*_xlfn.XLOOKUP(X44,'Control panel'!$S$7:$S$37,'Control panel'!$T$7:$T$37)","v":0.68618661002598702},1.4506958637108776]
[null,null,null,null,null,null,null,null,null,null,null,null,null,null,null,null,null,null,null,null,null,null,"2026-27",{"$f":"'PTRM Data'!B12","v":"Substation Bays"},{"$f":"_xlfn.XLOOKUP(X45,'Control panel'!$L$7:$L$37,'Control panel'!$P$7:$P$37)","v":1},9.0160813196642842,{"$f":"_xlfn.XLOOKUP(W45,'BBM Costs'!$Q$6:$U$6,_xlfn.XLOOKUP(X45,'BBM Costs'!$P$7:$P$37,'BBM Costs'!$Q$7:$U$37))*_xlfn.XLOOKUP(X45,'Control panel'!$L$7:$L$37,'Control panel'!$M$7:$M$37)","v":0},{"$f":"_xlfn.XLOOKUP(W45,'BBM Costs'!$X$6:$AB$6,_xlfn.XLOOKUP(X45,'BBM Costs'!$W$7:$W$37,'BBM Costs'!$X$7:$AB$37))*_xlfn.XLOOKUP(X45,'Control panel'!$S$7:$S$37,'Control panel'!$T$7:$T$37)","v":0},9.0160813196642842]
[null,null,null,null,null,null,null,null,null,null,null,null,null,null,null,null,null,null,null,null,null,null,"2026-27",{"$f":"'PTRM Data'!B13","v":"Substation Establishment"},{"$f":"_xlfn.XLOOKUP(X46,'Control panel'!$L$7:$L$37,'Control panel'!$P$7:$P$37)","v":1},2.2758107331710375,{"$f":"_xlfn.XLOOKUP(W46,'BBM Costs'!$Q$6:$U$6,_xlfn.XLOOKUP(X46,'BBM Costs'!$P$7:$P$37,'BBM Costs'!$Q$7:$U$37))*_xlfn.XLOOKUP(X46,'Control panel'!$L$7:$L$37,'Control panel'!$M$7:$M$37)","v":0},{"$f":"_xlfn.XLOOKUP(W46,'BBM Costs'!$X$6:$AB$6,_xlfn.XLOOKUP(X46,'BBM Costs'!$W$7:$W$37,'BBM Costs'!$X$7:$AB$37))*_xlfn.XLOOKUP(X46,'Control panel'!$S$7:$S$37,'Control panel'!$T$7:$T$37)","v":0},2.2758107331710375]
[null,null,null,null,null,null,null,null,null,null,null,null,null,null,null,null,null,null,null,null,null,null,"2026-27",{"$f":"'PTRM Data'!B14","v":"Distribution Substation Switchgear"},{"$f":"_xlfn.XLOOKUP(X47,'Control panel'!$L$7:$L$37,'Control panel'!$P$7:$P$37)","v":0.57000000000000006},3.4256838676165855,{"$f":"_xlfn.XLOOKUP(W47,'BBM Costs'!$Q$6:$U$6,_xlfn.XLOOKUP(X47,'BBM Costs'!$P$7:$P$37,'BBM Costs'!$Q$7:$U$37))*_xlfn.XLOOKUP(X47,'Control panel'!$L$7:$L$37,'Control panel'!$M$7:$M$37)","v":0.69084579620386866},{"$f":"_xlfn.XLOOKUP(W47,'BBM Costs'!$X$6:$AB$6,_xlfn.XLOOKUP(X47,'BBM Costs'!$W$7:$W$37,'BBM Costs'!$X$7:$AB$37))*_xlfn.XLOOKUP(X47,'Control panel'!$S$7:$S$37,'Control panel'!$T$7:$T$37)","v":18.855013857853539},22.971543521673993]
[null,null,null,null,null,null,null,null,null,null,null,null,null,null,null,null,null,null,null,null,null,null,"2026-27",{"$f":"'PTRM Data'!B15","v":"Zone Transformers"},{"$f":"_xlfn.XLOOKUP(X48,'Control panel'!$L$7:$L$37,'Control panel'!$P$7:$P$37)","v":1},1.8366219182790273,{"$f":"_xlfn.XLOOKUP(W48,'BBM Costs'!$Q$6:$U$6,_xlfn.XLOOKUP(X48,'BBM Costs'!$P$7:$P$37,'BBM Costs'!$Q$7:$U$37))*_xlfn.XLOOKUP(X48,'Control panel'!$L$7:$L$37,'Control panel'!$M$7:$M$37)","v":0},{"$f":"_xlfn.XLOOKUP(W48,'BBM Costs'!$X$6:$AB$6,_xlfn.XLOOKUP(X48,'BBM Costs'!$W$7:$W$37,'BBM Costs'!$X$7:$AB$37))*_xlfn.XLOOKUP(X48,'Control panel'!$S$7:$S$37,'Control panel'!$T$7:$T$37)","v":0},1.8366219182790273]
[null,null,null,null,null,null,null,null,null,null,null,null,null,null,null,null,null,null,null,null,null,null,"2026-27",{"$f":"'PTRM Data'!B16","v":"Distribution Transformers"},{"$f":"_xlfn.XLOOKUP(X49,'Control panel'!$L$7:$L$37,'Control panel'!$P$7:$P$37)","v":0.57000000000000006},8.7598699374979088,{"$f":"_xlfn.XLOOKUP(W49,'BBM Costs'!$Q$6:$U$6,_xlfn.XLOOKUP(X49,'BBM Costs'!$P$7:$P$37,'BBM Costs'!$Q$7:$U$37))*_xlfn.XLOOKUP(X49,'Control panel'!$L$7:$L$37,'Control panel'!$M$7:$M$37)","v":11.057097529175532},{"$f":"_xlfn.XLOOKUP(W49,'BBM Costs'!$X$6:$AB$6,_xlfn.XLOOKUP(X49,'BBM Costs'!$W$7:$W$37,'BBM Costs'!$X$7:$AB$37))*_xlfn.XLOOKUP(X49,'Control panel'!$S$7:$S$37,'Control panel'!$T$7:$T$37)","v":46.837330403233167},66.6542978699066]
[null,null,null,null,null,null,null,null,null,null,null,null,null,null,null,null,null,null,null,null,null,null,"2026-27",{"$f":"'PTRM Data'!B17","v":"Low Voltage Services"},{"$f":"_xlfn.XLOOKUP(X50,'Control panel'!$L$7:$L$37,'Control panel'!$P$7:$P$37)","v":0},2.8563864978266467,{"$f":"_xlfn.XLOOKUP(W50,'BBM Costs'!$Q$6:$U$6,_xlfn.XLOOKUP(X50,'BBM Costs'!$P$7:$P$37,'BBM Costs'!$Q$7:$U$37))*_xlfn.XLOOKUP(X50,'Control panel'!$L$7:$L$37,'Control panel'!$M$7:$M$37)","v":0},{"$f":"_xlfn.XLOOKUP(W50,'BBM Costs'!$X$6:$AB$6,_xlfn.XLOOKUP(X50,'BBM Costs'!$W$7:$W$37,'BBM Costs'!$X$7:$AB$37))*_xlfn.XLOOKUP(X50,'Control panel'!$S$7:$S$37,'Control panel'!$T$7:$T$37)","v":0},2.8563864978266467]
[null,null,null,null,null,null,null,null,null,null,null,null,null,null,null,null,null,null,null,null,null,null,"2026-27",{"$f":"'PTRM Data'!B18","v":"Metering"},{"$f":"_xlfn.XLOOKUP(X51,'Control panel'!$L$7:$L$37,'Control panel'!$P$7:$P$37)","v":1},0,{"$f":"_xlfn.XLOOKUP(W51,'BBM Costs'!$Q$6:$U$6,_xlfn.XLOOKUP(X51,'BBM Costs'!$P$7:$P$37,'BBM Costs'!$Q$7:$U$37))*_xlfn.XLOOKUP(X51,'Control panel'!$L$7:$L$37,'Control panel'!$M$7:$M$37)","v":0},{"$f":"_xlfn.XLOOKUP(W51,'BBM Costs'!$X$6:$AB$6,_xlfn.XLOOKUP(X51,'BBM Costs'!$W$7:$W$37,'BBM Costs'!$X$7:$AB$37))*_xlfn.XLOOKUP(X51,'Control panel'!$S$7:$S$37,'Control panel'!$T$7:$T$37)","v":0},0]
[null,null,null,null,null,null,null,null,null,null,null,null,null,null,null,null,null,null,null,null,null,null,"2026-27",{"$f":"'PTRM Data'!B19","v":"Communications – Pilot Wires"},{"$f":"_xlfn.XLOOKUP(X52,'Control panel'!$L$7:$L$37,'Control panel'!$P$7:$P$37)","v":0},1.0068978077085164,{"$f":"_xlfn.XLOOKUP(W52,'BBM Costs'!$Q$6:$U$6,_xlfn.XLOOKUP(X52,'BBM Costs'!$P$7:$P$37,'BBM Costs'!$Q$7:$U$37))*_xlfn.XLOOKUP(X52,'Control panel'!$L$7:$L$37,'Control panel'!$M$7:$M$37)","v":0},{"$f":"_xlfn.XLOOKUP(W52,'BBM Costs'!$X$6:$AB$6,_xlfn.XLOOKUP(X52,'BBM Costs'!$W$7:$W$37,'BBM Costs'!$X$7:$AB$37))*_xlfn.XLOOKUP(X52,'Control panel'!$S$7:$S$37,'Control panel'!$T$7:$T$37)","v":0},1.0068978077085164]
[]
[null,null,null,null,null,null,null,null,null,null,null,null,null,null,null,null,null,null,null,null,null,null,"2026-27",{"$f":"'PTRM Data'!B21","v":"Land & Easements (System) - combined"},{"$f":"_xlfn.XLOOKUP(X54,'Control panel'!$L$7:$L$37,'Control panel'!$P$7:$P$37)","v":1},0.28804853746236048,{"$f":"_xlfn.XLOOKUP(W54,'BBM Costs'!$Q$6:$U$6,_xlfn.XLOOKUP(X54,'BBM Costs'!$P$7:$P$37,'BBM Costs'!$Q$7:$U$37))*_xlfn.XLOOKUP(X54,'Control panel'!$L$7:$L$37,'Control panel'!$M$7:$M$37)","v":0},{"$f":"_xlfn.XLOOKUP(W54,'BBM Costs'!$X$6:$AB$6,_xlfn.XLOOKUP(X54,'BBM Costs'!$W$7:$W$37,'BBM Costs'!$X$7:$AB$37))*_xlfn.XLOOKUP(X54,'Control panel'!$S$7:$S$37,'Control panel'!$T$7:$T$37)","v":0},0.28804853746236048]
[null,null,null,null,null,null,null,null,null,null,null,null,null,null,null,null,null,null,null,null,null,null,"2026-27",{"$f":"'PTRM Data'!B22","v":"Land Improvements"},{"$f":"_xlfn.XLOOKUP(X55,'Control panel'!$L$7:$L$37,'Control panel'!$P$7:$P$37)","v":1},0,{"$f":"_xlfn.XLOOKUP(W55,'BBM Costs'!$Q$6:$U$6,_xlfn.XLOOKUP(X55,'BBM Costs'!$P$7:$P$37,'BBM Costs'!$Q$7:$U$37))*_xlfn.XLOOKUP(X55,'Control panel'!$L$7:$L$37,'Control panel'!$M$7:$M$37)","v":0},{"$f":"_xlfn.XLOOKUP(W55,'BBM Costs'!$X$6:$AB$6,_xlfn.XLOOKUP(X55,'BBM Costs'!$W$7:$W$37,'BBM Costs'!$X$7:$AB$37))*_xlfn.XLOOKUP(X55,'Control panel'!$S$7:$S$37,'Control panel'!$T$7:$T$37)","v":0},0]
[null,null,null,null,null,null,null,null,null,null,null,null,null,null,null,null,null,null,null,null,null,null,"2026-27",{"$f":"'PTRM Data'!B23","v":"Control Centre - SCADA"},{"$f":"_xlfn.XLOOKUP(X56,'Control panel'!$L$7:$L$37,'Control panel'!$P$7:$P$37)","v":1},0.11349384242662237,{"$f":"_xlfn.XLOOKUP(W56,'BBM Costs'!$Q$6:$U$6,_xlfn.XLOOKUP(X56,'BBM Costs'!$P$7:$P$37,'BBM Costs'!$Q$7:$U$37))*_xlfn.XLOOKUP(X56,'Control panel'!$L$7:$L$37,'Control panel'!$M$7:$M$37)","v":0},{"$f":"_xlfn.XLOOKUP(W56,'BBM Costs'!$X$6:$AB$6,_xlfn.XLOOKUP(X56,'BBM Costs'!$W$7:$W$37,'BBM Costs'!$X$7:$AB$37))*_xlfn.XLOOKUP(X56,'Control panel'!$S$7:$S$37,'Control panel'!$T$7:$T$37)","v":0},0.11349384242662237]
[null,null,null,null,null,null,null,null,null,null,null,null,null,null,null,null,null,null,null,null,null,null,"2026-27",{"$f":"'PTRM Data'!B24","v":"Other Equipment"},{"$f":"_xlfn.XLOOKUP(X57,'Control panel'!$L$7:$L$37,'Control panel'!$P$7:$P$37)","v":1},8.4074730295690507E-3,{"$f":"_xlfn.XLOOKUP(W57,'BBM Costs'!$Q$6:$U$6,_xlfn.XLOOKUP(X57,'BBM Costs'!$P$7:$P$37,'BBM Costs'!$Q$7:$U$37))*_xlfn.XLOOKUP(X57,'Control panel'!$L$7:$L$37,'Control panel'!$M$7:$M$37)","v":0},{"$f":"_xlfn.XLOOKUP(W57,'BBM Costs'!$X$6:$AB$6,_xlfn.XLOOKUP(X57,'BBM Costs'!$W$7:$W$37,'BBM Costs'!$X$7:$AB$37))*_xlfn.XLOOKUP(X57,'Control panel'!$S$7:$S$37,'Control panel'!$T$7:$T$37)","v":0},8.4074730295690507E-3]
[null,null,null,null,null,null,null,null,null,null,null,null,null,null,null,null,null,null,null,null,null,null,"2026-27",{"$f":"'PTRM Data'!B25","v":"Generation Assets"},{"$f":"_xlfn.XLOOKUP(X58,'Control panel'!$L$7:$L$37,'Control panel'!$P$7:$P$37)","v":1},0.10603074829535919,{"$f":"_xlfn.XLOOKUP(W58,'BBM Costs'!$Q$6:$U$6,_xlfn.XLOOKUP(X58,'BBM Costs'!$P$7:$P$37,'BBM Costs'!$Q$7:$U$37))*_xlfn.XLOOKUP(X58,'Control panel'!$L$7:$L$37,'Control panel'!$M$7:$M$37)","v":0},{"$f":"_xlfn.XLOOKUP(W58,'BBM Costs'!$X$6:$AB$6,_xlfn.XLOOKUP(X58,'BBM Costs'!$W$7:$W$37,'BBM Costs'!$X$7:$AB$37))*_xlfn.XLOOKUP(X58,'Control panel'!$S$7:$S$37,'Control panel'!$T$7:$T$37)","v":0},0.10603074829535919]
[null,null,null,null,null,null,null,null,null,null,null,null,null,null,null,null,null,null,null,null,null,null,"2026-27",{"$f":"'PTRM Data'!B26","v":"Motor Vehicles"},{"$f":"_xlfn.XLOOKUP(X59,'Control panel'!$L$7:$L$37,'Control panel'!$P$7:$P$37)","v":1},0,{"$f":"_xlfn.XLOOKUP(W59,'BBM Costs'!$Q$6:$U$6,_xlfn.XLOOKUP(X59,'BBM Costs'!$P$7:$P$37,'BBM Costs'!$Q$7:$U$37))*_xlfn.XLOOKUP(X59,'Control panel'!$L$7:$L$37,'Control panel'!$M$7:$M$37)","v":0},{"$f":"_xlfn.XLOOKUP(W59,'BBM Costs'!$X$6:$AB$6,_xlfn.XLOOKUP(X59,'BBM Costs'!$W$7:$W$37,'BBM Costs'!$X$7:$AB$37))*_xlfn.XLOOKUP(X59,'Control panel'!$S$7:$S$37,'Control panel'!$T$7:$T$37)","v":0},0]
[null,null,null,null,null,null,null,null,null,null,null,null,null,null,null,null,null,null,null,null,null,null,"2026-27",{"$f":"'PTRM Data'!B27","v":"Plant & Equipment"},{"$f":"_xlfn.XLOOKUP(X60,'Control panel'!$L$7:$L$37,'Control panel'!$P$7:$P$37)","v":1},0,{"$f":"_xlfn.XLOOKUP(W60,'BBM Costs'!$Q$6:$U$6,_xlfn.XLOOKUP(X60,'BBM Costs'!$P$7:$P$37,'BBM Costs'!$Q$7:$U$37))*_xlfn.XLOOKUP(X60,'Control panel'!$L$7:$L$37,'Control panel'!$M$7:$M$37)","v":0},{"$f":"_xlfn.XLOOKUP(W60,'BBM Costs'!$X$6:$AB$6,_xlfn.XLOOKUP(X60,'BBM Costs'!$W$7:$W$37,'BBM Costs'!$X$7:$AB$37))*_xlfn.XLOOKUP(X60,'Control panel'!$S$7:$S$37,'Control panel'!$T$7:$T$37)","v":0},0]
[null,null,null,null,null,null,null,null,null,null,null,null,null,null,null,null,null,null,null,null,null,null,"2026-27",{"$f":"'PTRM Data'!B28","v":"Buildings"},{"$f":"_xlfn.XLOOKUP(X61,'Control panel'!$L$7:$L$37,'Control panel'!$P$7:$P$37)","v":1},0,{"$f":"_xlfn.XLOOKUP(W61,'BBM Costs'!$Q$6:$U$6,_xlfn.XLOOKUP(X61,'BBM Costs'!$P$7:$P$37,'BBM Costs'!$Q$7:$U$37))*_xlfn.XLOOKUP(X61,'Control panel'!$L$7:$L$37,'Control panel'!$M$7:$M$37)","v":0},{"$f":"_xlfn.XLOOKUP(W61,'BBM Costs'!$X$6:$AB$6,_xlfn.XLOOKUP(X61,'BBM Costs'!$W$7:$W$37,'BBM Costs'!$X$7:$AB$37))*_xlfn.XLOOKUP(X61,'Control panel'!$S$7:$S$37,'Control panel'!$T$7:$T$37)","v":0},0]
[null,null,null,null,null,null,null,null,null,null,null,null,null,null,null,null,null,null,null,null,null,null,"2026-27",{"$f":"'PTRM Data'!B29","v":"Office Equipment & Furniture"},{"$f":"_xlfn.XLOOKUP(X62,'Control panel'!$L$7:$L$37,'Control panel'!$P$7:$P$37)","v":1},-1.7525064816111671E-2,{"$f":"_xlfn.XLOOKUP(W62,'BBM Costs'!$Q$6:$U$6,_xlfn.XLOOKUP(X62,'BBM Costs'!$P$7:$P$37,'BBM Costs'!$Q$7:$U$37))*_xlfn.XLOOKUP(X62,'Control panel'!$L$7:$L$37,'Control panel'!$M$7:$M$37)","v":0},{"$f":"_xlfn.XLOOKUP(W62,'BBM Costs'!$X$6:$AB$6,_xlfn.XLOOKUP(X62,'BBM Costs'!$W$7:$W$37,'BBM Costs'!$X$7:$AB$37))*_xlfn.XLOOKUP(X62,'Control panel'!$S$7:$S$37,'Control panel'!$T$7:$T$37)","v":0},-1.7525064816111671E-2]
[null,null,null,null,null,null,null,null,null,null,null,null,null,null,null,null,null,null,null,null,null,null,"2026-27",{"$f":"'PTRM Data'!B30","v":"Initial Leases (10 yr life)"},{"$f":"_xlfn.XLOOKUP(X63,'Control panel'!$L$7:$L$37,'Control panel'!$P$7:$P$37)","v":1},0,{"$f":"_xlfn.XLOOKUP(W63,'BBM Costs'!$Q$6:$U$6,_xlfn.XLOOKUP(X63,'BBM Costs'!$P$7:$P$37,'BBM Costs'!$Q$7:$U$37))*_xlfn.XLOOKUP(X63,'Control panel'!$L$7:$L$37,'Control panel'!$M$7:$M$37)","v":0},{"$f":"_xlfn.XLOOKUP(W63,'BBM Costs'!$X$6:$AB$6,_xlfn.XLOOKUP(X63,'BBM Costs'!$W$7:$W$37,'BBM Costs'!$X$7:$AB$37))*_xlfn.XLOOKUP(X63,'Control panel'!$S$7:$S$37,'Control panel'!$T$7:$T$37)","v":0},0]
[null,null,null,null,null,null,null,null,null,null,null,null,null,null,null,null,null,null,null,null,null,null,"2026-27",{"$f":"'PTRM Data'!B31","v":"Lease Extensions (5yr Life)"},{"$f":"_xlfn.XLOOKUP(X64,'Control panel'!$L$7:$L$37,'Control panel'!$P$7:$P$37)","v":1},0,{"$f":"_xlfn.XLOOKUP(W64,'BBM Costs'!$Q$6:$U$6,_xlfn.XLOOKUP(X64,'BBM Costs'!$P$7:$P$37,'BBM Costs'!$Q$7:$U$37))*_xlfn.XLOOKUP(X64,'Control panel'!$L$7:$L$37,'Control panel'!$M$7:$M$37)","v":0},{"$f":"_xlfn.XLOOKUP(W64,'BBM Costs'!$X$6:$AB$6,_xlfn.XLOOKUP(X64,'BBM Costs'!$W$7:$W$37,'BBM Costs'!$X$7:$AB$37))*_xlfn.XLOOKUP(X64,'Control panel'!$S$7:$S$37,'Control panel'!$T$7:$T$37)","v":0},0]
[null,null,null,null,null,null,null,null,null,null,null,null,null,null,null,null,null,null,null,null,null,null,"2026-27",{"$f":"'PTRM Data'!B32","v":"Land & Easements - combined"},{"$f":"_xlfn.XLOOKUP(X65,'Control panel'!$L$7:$L$37,'Control panel'!$P$7:$P$37)","v":1},0,{"$f":"_xlfn.XLOOKUP(W65,'BBM Costs'!$Q$6:$U$6,_xlfn.XLOOKUP(X65,'BBM Costs'!$P$7:$P$37,'BBM Costs'!$Q$7:$U$37))*_xlfn.XLOOKUP(X65,'Control panel'!$L$7:$L$37,'Control panel'!$M$7:$M$37)","v":0},{"$f":"_xlfn.XLOOKUP(W65,'BBM Costs'!$X$6:$AB$6,_xlfn.XLOOKUP(X65,'BBM Costs'!$W$7:$W$37,'BBM Costs'!$X$7:$AB$37))*_xlfn.XLOOKUP(X65,'Control panel'!$S$7:$S$37,'Control panel'!$T$7:$T$37)","v":0},0]
[null,null,null,null,null,null,null,null,null,null,null,null,null,null,null,null,null,null,null,null,null,null,"2026-27",{"$f":"'PTRM Data'!B33","v":"Communications"},{"$f":"_xlfn.XLOOKUP(X66,'Control panel'!$L$7:$L$37,'Control panel'!$P$7:$P$37)","v":1},0,{"$f":"_xlfn.XLOOKUP(W66,'BBM Costs'!$Q$6:$U$6,_xlfn.XLOOKUP(X66,'BBM Costs'!$P$7:$P$37,'BBM Costs'!$Q$7:$U$37))*_xlfn.XLOOKUP(X66,'Control panel'!$L$7:$L$37,'Control panel'!$M$7:$M$37)","v":0},{"$f":"_xlfn.XLOOKUP(W66,'BBM Costs'!$X$6:$AB$6,_xlfn.XLOOKUP(X66,'BBM Costs'!$W$7:$W$37,'BBM Costs'!$X$7:$AB$37))*_xlfn.XLOOKUP(X66,'Control panel'!$S$7:$S$37,'Control panel'!$T$7:$T$37)","v":0},0]
[null,null,null,null,null,null,null,null,null,null,null,null,null,null,null,null,null,null,null,null,null,null,"2026-27",{"$f":"'PTRM Data'!B34","v":"In-house software"},{"$f":"_xlfn.XLOOKUP(X67,'Control panel'!$L$7:$L$37,'Control panel'!$P$7:$P$37)","v":1},0,{"$f":"_xlfn.XLOOKUP(W67,'BBM Costs'!$Q$6:$U$6,_xlfn.XLOOKUP(X67,'BBM Costs'!$P$7:$P$37,'BBM Costs'!$Q$7:$U$37))*_xlfn.XLOOKUP(X67,'Control panel'!$L$7:$L$37,'Control panel'!$M$7:$M$37)","v":0},{"$f":"_xlfn.XLOOKUP(W67,'BBM Costs'!$X$6:$AB$6,_xlfn.XLOOKUP(X67,'BBM Costs'!$W$7:$W$37,'BBM Costs'!$X$7:$AB$37))*_xlfn.XLOOKUP(X67,'Control panel'!$S$7:$S$37,'Control panel'!$T$7:$T$37)","v":0},0]
[null,null,null,null,null,null,null,null,null,null,null,null,null,null,null,null,null,null,null,null,null,null,"2026-27",{"$f":"'PTRM Data'!B35","v":"IT Systems"},{"$f":"_xlfn.XLOOKUP(X68,'Control panel'!$L$7:$L$37,'Control panel'!$P$7:$P$37)","v":1},0,{"$f":"_xlfn.XLOOKUP(W68,'BBM Costs'!$Q$6:$U$6,_xlfn.XLOOKUP(X68,'BBM Costs'!$P$7:$P$37,'BBM Costs'!$Q$7:$U$37))*_xlfn.XLOOKUP(X68,'Control panel'!$L$7:$L$37,'Control panel'!$M$7:$M$37)","v":0},{"$f":"_xlfn.XLOOKUP(W68,'BBM Costs'!$X$6:$AB$6,_xlfn.XLOOKUP(X68,'BBM Costs'!$W$7:$W$37,'BBM Costs'!$X$7:$AB$37))*_xlfn.XLOOKUP(X68,'Control panel'!$S$7:$S$37,'Control panel'!$T$7:$T$37)","v":0},0]
[null,null,null,null,null,null,null,null,null,null,null,null,null,null,null,null,null,null,null,null,null,null,"2026-27",{"$f":"'PTRM Data'!B36","v":"Legacy ICT Assets"},{"$f":"_xlfn.XLOOKUP(X69,'Control panel'!$L$7:$L$37,'Control panel'!$P$7:$P$37)","v":1},0,{"$f":"_xlfn.XLOOKUP(W69,'BBM Costs'!$Q$6:$U$6,_xlfn.XLOOKUP(X69,'BBM Costs'!$P$7:$P$37,'BBM Costs'!$Q$7:$U$37))*_xlfn.XLOOKUP(X69,'Control panel'!$L$7:$L$37,'Control panel'!$M$7:$M$37)","v":0},{"$f":"_xlfn.XLOOKUP(W69,'BBM Costs'!$X$6:$AB$6,_xlfn.XLOOKUP(X69,'BBM Costs'!$W$7:$W$37,'BBM Costs'!$X$7:$AB$37))*_xlfn.XLOOKUP(X69,'Control panel'!$S$7:$S$37,'Control panel'!$T$7:$T$37)","v":0},0]
[null,null,null,null,null,null,null,null,null,null,null,null,null,null,null,null,null,null,null,null,null,null,"2026-27",{"$f":"'PTRM Data'!B37","v":"Buildings - capital works"},{"$f":"_xlfn.XLOOKUP(X70,'Control panel'!$L$7:$L$37,'Control panel'!$P$7:$P$37)","v":1},0,{"$f":"_xlfn.XLOOKUP(W70,'BBM Costs'!$Q$6:$U$6,_xlfn.XLOOKUP(X70,'BBM Costs'!$P$7:$P$37,'BBM Costs'!$Q$7:$U$37))*_xlfn.XLOOKUP(X70,'Control panel'!$L$7:$L$37,'Control panel'!$M$7:$M$37)","v":0},{"$f":"_xlfn.XLOOKUP(W70,'BBM Costs'!$X$6:$AB$6,_xlfn.XLOOKUP(X70,'BBM Costs'!$W$7:$W$37,'BBM Costs'!$X$7:$AB$37))*_xlfn.XLOOKUP(X70,'Control panel'!$S$7:$S$37,'Control panel'!$T$7:$T$37)","v":0},0]
[null,null,null,null,null,null,null,null,null,null,null,null,null,null,null,null,null,null,null,null,null,null,"2027-28",{"$f":"'PTRM Data'!B7","v":"Overhead Sub-Transmission Lines"},{"$f":"_xlfn.XLOOKUP(X71,'Control panel'!$L$7:$L$37,'Control panel'!$P$7:$P$37)","v":1},8.3697108758576171,{"$f":"_xlfn.XLOOKUP(W71,'BBM Costs'!$Q$6:$U$6,_xlfn.XLOOKUP(X71,'BBM Costs'!$P$7:$P$37,'BBM Costs'!$Q$7:$U$37))*_xlfn.XLOOKUP(X71,'Control panel'!$L$7:$L$37,'Control panel'!$M$7:$M$37)","v":0},{"$f":"_xlfn.XLOOKUP(W71,'BBM Costs'!$X$6:$AB$6,_xlfn.XLOOKUP(X71,'BBM Costs'!$W$7:$W$37,'BBM Costs'!$X$7:$AB$37))*_xlfn.XLOOKUP(X71,'Control panel'!$S$7:$S$37,'Control panel'!$T$7:$T$37)","v":0},8.3697108758576171]
[null,null,null,null,null,null,null,null,null,null,null,null,null,null,null,null,null,null,null,null,null,null,"2027-28",{"$f":"'PTRM Data'!B8","v":"Underground Sub-Transmission Cables"},{"$f":"_xlfn.XLOOKUP(X72,'Control panel'!$L$7:$L$37,'Control panel'!$P$7:$P$37)","v":1},0.36903781305494049,{"$f":"_xlfn.XLOOKUP(W72,'BBM Costs'!$Q$6:$U$6,_xlfn.XLOOKUP(X72,'BBM Costs'!$P$7:$P$37,'BBM Costs'!$Q$7:$U$37))*_xlfn.XLOOKUP(X72,'Control panel'!$L$7:$L$37,'Control panel'!$M$7:$M$37)","v":0},{"$f":"_xlfn.XLOOKUP(W72,'BBM Costs'!$X$6:$AB$6,_xlfn.XLOOKUP(X72,'BBM Costs'!$W$7:$W$37,'BBM Costs'!$X$7:$AB$37))*_xlfn.XLOOKUP(X72,'Control panel'!$S$7:$S$37,'Control panel'!$T$7:$T$37)","v":0},0.36903781305494049]
[null,null,null,null,null,null,null,null,null,null,null,null,null,null,null,null,null,null,null,null,null,null,"2027-28",{"$f":"'PTRM Data'!B9","v":"Overhead Distribution Lines"},{"$f":"_xlfn.XLOOKUP(X73,'Control panel'!$L$7:$L$37,'Control panel'!$P$7:$P$37)","v":0.57000000000000006},34.315674711501408,{"$f":"_xlfn.XLOOKUP(W73,'BBM Costs'!$Q$6:$U$6,_xlfn.XLOOKUP(X73,'BBM Costs'!$P$7:$P$37,'BBM Costs'!$Q$7:$U$37))*_xlfn.XLOOKUP(X73,'Control panel'!$L$7:$L$37,'Control panel'!$M$7:$M$37)","v":5.1685543456790031},{"$f":"_xlfn.XLOOKUP(W73,'BBM Costs'!$X$6:$AB$6,_xlfn.XLOOKUP(X73,'BBM Costs'!$W$7:$W$37,'BBM Costs'!$X$7:$AB$37))*_xlfn.XLOOKUP(X73,'Control panel'!$S$7:$S$37,'Control panel'!$T$7:$T$37)","v":200.31099915576092},239.79522821294134]
[null,null,null,null,null,null,null,null,null,null,null,null,null,null,null,null,null,null,null,null,null,null,"2027-28",{"$f":"'PTRM Data'!B10","v":"Underground Distribution Cables"},{"$f":"_xlfn.XLOOKUP(X74,'Control panel'!$L$7:$L$37,'Control panel'!$P$7:$P$37)","v":0.57000000000000006},{"$f":"SUMPRODUCT(_xlfn.XLOOKUP(W74,$AZ$9:$AZ$13,$BA$9:$BS$13),_xlfn.XLOOKUP(X74,$AE$9:$AE$39,$AF$9:$AX$39))","v":6.0678492754823408},{"$f":"_xlfn.XLOOKUP(W74,'BBM Costs'!$Q$6:$U$6,_xlfn.XLOOKUP(X74,'BBM Costs'!$P$7:$P$37,'BBM Costs'!$Q$7:$U$37))*_xlfn.XLOOKUP(X74,'Control panel'!$L$7:$L$37,'Control panel'!$M$7:$M$37)","v":-1.0813603241391441},{"$f":"_xlfn.XLOOKUP(W74,'BBM Costs'!$X$6:$AB$6,_xlfn.XLOOKUP(X74,'BBM Costs'!$W$7:$W$37,'BBM Costs'!$X$7:$AB$37))*_xlfn.XLOOKUP(X74,'Control panel'!$S$7:$S$37,'Control panel'!$T$7:$T$37)","v":32.634006985127272},{"$f":"SUM(Z74:AB74)","v":37.620495936470469}]
[null,null,null,null,null,null,null,null,null,null,null,null,null,null,null,null,null,null,null,null,null,null,"2027-28",{"$f":"'PTRM Data'!B11","v":"Distribution Equipment"},{"$f":"_xlfn.XLOOKUP(X75,'Control panel'!$L$7:$L$37,'Control panel'!$P$7:$P$37)","v":0.57000000000000006},0.12835219477146462,{"$f":"_xlfn.XLOOKUP(W75,'BBM Costs'!$Q$6:$U$6,_xlfn.XLOOKUP(X75,'BBM Costs'!$P$7:$P$37,'BBM Costs'!$Q$7:$U$37))*_xlfn.XLOOKUP(X75,'Control panel'!$L$7:$L$37,'Control panel'!$M$7:$M$37)","v":0.66814440756405369},{"$f":"_xlfn.XLOOKUP(W75,'BBM Costs'!$X$6:$AB$6,_xlfn.XLOOKUP(X75,'BBM Costs'!$W$7:$W$37,'BBM Costs'!$X$7:$AB$37))*_xlfn.XLOOKUP(X75,'Control panel'!$S$7:$S$37,'Control panel'!$T$7:$T$37)","v":0.76461962873226452},1.5611162310677829]
[null,null,null,null,null,null,null,null,null,null,null,null,null,null,null,null,null,null,null,null,null,null,"2027-28",{"$f":"'PTRM Data'!B12","v":"Substation Bays"},{"$f":"_xlfn.XLOOKUP(X76,'Control panel'!$L$7:$L$37,'Control panel'!$P$7:$P$37)","v":1},9.3394686458467202,{"$f":"_xlfn.XLOOKUP(W76,'BBM Costs'!$Q$6:$U$6,_xlfn.XLOOKUP(X76,'BBM Costs'!$P$7:$P$37,'BBM Costs'!$Q$7:$U$37))*_xlfn.XLOOKUP(X76,'Control panel'!$L$7:$L$37,'Control panel'!$M$7:$M$37)","v":0},{"$f":"_xlfn.XLOOKUP(W76,'BBM Costs'!$X$6:$AB$6,_xlfn.XLOOKUP(X76,'BBM Costs'!$W$7:$W$37,'BBM Costs'!$X$7:$AB$37))*_xlfn.XLOOKUP(X76,'Control panel'!$S$7:$S$37,'Control panel'!$T$7:$T$37)","v":0},9.3394686458467202]
[null,null,null,null,null,null,null,null,null,null,null,null,null,null,null,null,null,null,null,null,null,null,"2027-28",{"$f":"'PTRM Data'!B13","v":"Substation Establishment"},{"$f":"_xlfn.XLOOKUP(X77,'Control panel'!$L$7:$L$37,'Control panel'!$P$7:$P$37)","v":1},2.3574391393270804,{"$f":"_xlfn.XLOOKUP(W77,'BBM Costs'!$Q$6:$U$6,_xlfn.XLOOKUP(X77,'BBM Costs'!$P$7:$P$37,'BBM Costs'!$Q$7:$U$37))*_xlfn.XLOOKUP(X77,'Control panel'!$L$7:$L$37,'Control panel'!$M$7:$M$37)","v":0},{"$f":"_xlfn.XLOOKUP(W77,'BBM Costs'!$X$6:$AB$6,_xlfn.XLOOKUP(X77,'BBM Costs'!$W$7:$W$37,'BBM Costs'!$X$7:$AB$37))*_xlfn.XLOOKUP(X77,'Control panel'!$S$7:$S$37,'Control panel'!$T$7:$T$37)","v":0},2.3574391393270804]
[null,null,null,null,null,null,null,null,null,null,null,null,null,null,null,null,null,null,null,null,null,null,"2027-28",{"$f":"'PTRM Data'!B14","v":"Distribution Substation Switchgear"},{"$f":"_xlfn.XLOOKUP(X78,'Control panel'!$L$7:$L$37,'Control panel'!$P$7:$P$37)","v":0.57000000000000006},3.5485557347856003,{"$f":"_xlfn.XLOOKUP(W78,'BBM Costs'!$Q$6:$U$6,_xlfn.XLOOKUP(X78,'BBM Costs'!$P$7:$P$37,'BBM Costs'!$Q$7:$U$37))*_xlfn.XLOOKUP(X78,'Control panel'!$L$7:$L$37,'Control panel'!$M$7:$M$37)","v":0.81553147894705613},{"$f":"_xlfn.XLOOKUP(W78,'BBM Costs'!$X$6:$AB$6,_xlfn.XLOOKUP(X78,'BBM Costs'!$W$7:$W$37,'BBM Costs'!$X$7:$AB$37))*_xlfn.XLOOKUP(X78,'Control panel'!$S$7:$S$37,'Control panel'!$T$7:$T$37)","v":20.886440538906442},25.250527752639098]
[null,null,null,null,null,null,null,null,null,null,null,null,null,null,null,null,null,null,null,null,null,null,"2027-28",{"$f":"'PTRM Data'!B15","v":"Zone Transformers"},{"$f":"_xlfn.XLOOKUP(X79,'Control panel'!$L$7:$L$37,'Control panel'!$P$7:$P$37)","v":1},1.9024975720472459,{"$f":"_xlfn.XLOOKUP(W79,'BBM Costs'!$Q$6:$U$6,_xlfn.XLOOKUP(X79,'BBM Costs'!$P$7:$P$37,'BBM Costs'!$Q$7:$U$37))*_xlfn.XLOOKUP(X79,'Control panel'!$L$7:$L$37,'Control panel'!$M$7:$M$37)","v":0},{"$f":"_xlfn.XLOOKUP(W79,'BBM Costs'!$X$6:$AB$6,_xlfn.XLOOKUP(X79,'BBM Costs'!$W$7:$W$37,'BBM Costs'!$X$7:$AB$37))*_xlfn.XLOOKUP(X79,'Control panel'!$S$7:$S$37,'Control panel'!$T$7:$T$37)","v":0},1.9024975720472459]
[null,null,null,null,null,null,null,null,null,null,null,null,null,null,null,null,null,null,null,null,null,null,"2027-28",{"$f":"'PTRM Data'!B16","v":"Distribution Transformers"},{"$f":"_xlfn.XLOOKUP(X80,'Control panel'!$L$7:$L$37,'Control panel'!$P$7:$P$37)","v":0.57000000000000006},9.074067515842156,{"$f":"_xlfn.XLOOKUP(W80,'BBM Costs'!$Q$6:$U$6,_xlfn.XLOOKUP(X80,'BBM Costs'!$P$7:$P$37,'BBM Costs'!$Q$7:$U$37))*_xlfn.XLOOKUP(X80,'Control panel'!$L$7:$L$37,'Control panel'!$M$7:$M$37)","v":11.699764309325777},{"$f":"_xlfn.XLOOKUP(W80,'BBM Costs'!$X$6:$AB$6,_xlfn.XLOOKUP(X80,'BBM Costs'!$W$7:$W$37,'BBM Costs'!$X$7:$AB$37))*_xlfn.XLOOKUP(X80,'Control panel'!$S$7:$S$37,'Control panel'!$T$7:$T$37)","v":50.466897401959251},71.24072922712719]
[null,null,null,null,null,null,null,null,null,null,null,null,null,null,null,null,null,null,null,null,null,null,"2027-28",{"$f":"'PTRM Data'!B17","v":"Low Voltage Services"},{"$f":"_xlfn.XLOOKUP(X81,'Control panel'!$L$7:$L$37,'Control panel'!$P$7:$P$37)","v":0},2.9588389002978976,{"$f":"_xlfn.XLOOKUP(W81,'BBM Costs'!$Q$6:$U$6,_xlfn.XLOOKUP(X81,'BBM Costs'!$P$7:$P$37,'BBM Costs'!$Q$7:$U$37))*_xlfn.XLOOKUP(X81,'Control panel'!$L$7:$L$37,'Control panel'!$M$7:$M$37)","v":0},{"$f":"_xlfn.XLOOKUP(W81,'BBM Costs'!$X$6:$AB$6,_xlfn.XLOOKUP(X81,'BBM Costs'!$W$7:$W$37,'BBM Costs'!$X$7:$AB$37))*_xlfn.XLOOKUP(X81,'Control panel'!$S$7:$S$37,'Control panel'!$T$7:$T$37)","v":0},2.9588389002978976]
[null,null,null,null,null,null,null,null,null,null,null,null,null,null,null,null,null,null,null,null,null,null,"2027-28",{"$f":"'PTRM Data'!B18","v":"Metering"},{"$f":"_xlfn.XLOOKUP(X82,'Control panel'!$L$7:$L$37,'Control panel'!$P$7:$P$37)","v":1},0,{"$f":"_xlfn.XLOOKUP(W82,'BBM Costs'!$Q$6:$U$6,_xlfn.XLOOKUP(X82,'BBM Costs'!$P$7:$P$37,'BBM Costs'!$Q$7:$U$37))*_xlfn.XLOOKUP(X82,'Control panel'!$L$7:$L$37,'Control panel'!$M$7:$M$37)","v":0},{"$f":"_xlfn.XLOOKUP(W82,'BBM Costs'!$X$6:$AB$6,_xlfn.XLOOKUP(X82,'BBM Costs'!$W$7:$W$37,'BBM Costs'!$X$7:$AB$37))*_xlfn.XLOOKUP(X82,'Control panel'!$S$7:$S$37,'Control panel'!$T$7:$T$37)","v":0},0]
[null,null,null,null,null,null,null,null,null,null,null,null,null,null,null,null,null,null,null,null,null,null,"2027-28",{"$f":"'PTRM Data'!B19","v":"Communications – Pilot Wires"},{"$f":"_xlfn.XLOOKUP(X83,'Control panel'!$L$7:$L$37,'Control panel'!$P$7:$P$37)","v":0},1.0430130531493083,{"$f":"_xlfn.XLOOKUP(W83,'BBM Costs'!$Q$6:$U$6,_xlfn.XLOOKUP(X83,'BBM Costs'!$P$7:$P$37,'BBM Costs'!$Q$7:$U$37))*_xlfn.XLOOKUP(X83,'Control panel'!$L$7:$L$37,'Control panel'!$M$7:$M$37)","v":0},{"$f":"_xlfn.XLOOKUP(W83,'BBM Costs'!$X$6:$AB$6,_xlfn.XLOOKUP(X83,'BBM Costs'!$W$7:$W$37,'BBM Costs'!$X$7:$AB$37))*_xlfn.XLOOKUP(X83,'Control panel'!$S$7:$S$37,'Control panel'!$T$7:$T$37)","v":0},1.0430130531493083]
[]
[null,null,null,null,null,null,null,null,null,null,null,null,null,null,null,null,null,null,null,null,null,null,"2027-28",{"$f":"'PTRM Data'!B21","v":"Land & Easements (System) - combined"},{"$f":"_xlfn.XLOOKUP(X85,'Control panel'!$L$7:$L$37,'Control panel'!$P$7:$P$37)","v":1},0.29838021516557162,{"$f":"_xlfn.XLOOKUP(W85,'BBM Costs'!$Q$6:$U$6,_xlfn.XLOOKUP(X85,'BBM Costs'!$P$7:$P$37,'BBM Costs'!$Q$7:$U$37))*_xlfn.XLOOKUP(X85,'Control panel'!$L$7:$L$37,'Control panel'!$M$7:$M$37)","v":0},{"$f":"_xlfn.XLOOKUP(W85,'BBM Costs'!$X$6:$AB$6,_xlfn.XLOOKUP(X85,'BBM Costs'!$W$7:$W$37,'BBM Costs'!$X$7:$AB$37))*_xlfn.XLOOKUP(X85,'Control panel'!$S$7:$S$37,'Control panel'!$T$7:$T$37)","v":0},0.29838021516557162]
[null,null,null,null,null,null,null,null,null,null,null,null,null,null,null,null,null,null,null,null,null,null,"2027-28",{"$f":"'PTRM Data'!B22","v":"Land Improvements"},{"$f":"_xlfn.XLOOKUP(X86,'Control panel'!$L$7:$L$37,'Control panel'!$P$7:$P$37)","v":1},0,{"$f":"_xlfn.XLOOKUP(W86,'BBM Costs'!$Q$6:$U$6,_xlfn.XLOOKUP(X86,'BBM Costs'!$P$7:$P$37,'BBM Costs'!$Q$7:$U$37))*_xlfn.XLOOKUP(X86,'Control panel'!$L$7:$L$37,'Control panel'!$M$7:$M$37)","v":0},{"$f":"_xlfn.XLOOKUP(W86,'BBM Costs'!$X$6:$AB$6,_xlfn.XLOOKUP(X86,'BBM Costs'!$W$7:$W$37,'BBM Costs'!$X$7:$AB$37))*_xlfn.XLOOKUP(X86,'Control panel'!$S$7:$S$37,'Control panel'!$T$7:$T$37)","v":0},0]
[null,null,null,null,null,null,null,null,null,null,null,null,null,null,null,null,null,null,null,null,null,null,"2027-28",{"$f":"'PTRM Data'!B23","v":"Control Centre - SCADA"},{"$f":"_xlfn.XLOOKUP(X87,'Control panel'!$L$7:$L$37,'Control panel'!$P$7:$P$37)","v":1},0.11756462095436999,{"$f":"_xlfn.XLOOKUP(W87,'BBM Costs'!$Q$6:$U$6,_xlfn.XLOOKUP(X87,'BBM Costs'!$P$7:$P$37,'BBM Costs'!$Q$7:$U$37))*_xlfn.XLOOKUP(X87,'Control panel'!$L$7:$L$37,'Control panel'!$M$7:$M$37)","v":0},{"$f":"_xlfn.XLOOKUP(W87,'BBM Costs'!$X$6:$AB$6,_xlfn.XLOOKUP(X87,'BBM Costs'!$W$7:$W$37,'BBM Costs'!$X$7:$AB$37))*_xlfn.XLOOKUP(X87,'Control panel'!$S$7:$S$37,'Control panel'!$T$7:$T$37)","v":0},0.11756462095436999]
[null,null,null,null,null,null,null,null,null,null,null,null,null,null,null,null,null,null,null,null,null,null,"2027-28",{"$f":"'PTRM Data'!B24","v":"Other Equipment"},{"$f":"_xlfn.XLOOKUP(X88,'Control panel'!$L$7:$L$37,'Control panel'!$P$7:$P$37)","v":1},8.709030893411001E-3,{"$f":"_xlfn.XLOOKUP(W88,'BBM Costs'!$Q$6:$U$6,_xlfn.XLOOKUP(X88,'BBM Costs'!$P$7:$P$37,'BBM Costs'!$Q$7:$U$37))*_xlfn.XLOOKUP(X88,'Control panel'!$L$7:$L$37,'Control panel'!$M$7:$M$37)","v":0},{"$f":"_xlfn.XLOOKUP(W88,'BBM Costs'!$X$6:$AB$6,_xlfn.XLOOKUP(X88,'BBM Costs'!$W$7:$W$37,'BBM Costs'!$X$7:$AB$37))*_xlfn.XLOOKUP(X88,'Control panel'!$S$7:$S$37,'Control panel'!$T$7:$T$37)","v":0},8.709030893411001E-3]
[null,null,null,null,null,null,null,null,null,null,null,null,null,null,null,null,null,null,null,null,null,null,"2027-28",{"$f":"'PTRM Data'!B25","v":"Generation Assets"},{"$f":"_xlfn.XLOOKUP(X89,'Control panel'!$L$7:$L$37,'Control panel'!$P$7:$P$37)","v":1},0.109833841786716,{"$f":"_xlfn.XLOOKUP(W89,'BBM Costs'!$Q$6:$U$6,_xlfn.XLOOKUP(X89,'BBM Costs'!$P$7:$P$37,'BBM Costs'!$Q$7:$U$37))*_xlfn.XLOOKUP(X89,'Control panel'!$L$7:$L$37,'Control panel'!$M$7:$M$37)","v":0},{"$f":"_xlfn.XLOOKUP(W89,'BBM Costs'!$X$6:$AB$6,_xlfn.XLOOKUP(X89,'BBM Costs'!$W$7:$W$37,'BBM Costs'!$X$7:$AB$37))*_xlfn.XLOOKUP(X89,'Control panel'!$S$7:$S$37,'Control panel'!$T$7:$T$37)","v":0},0.109833841786716]
[null,null,null,null,null,null,null,null,null,null,null,null,null,null,null,null,null,null,null,null,null,null,"2027-28",{"$f":"'PTRM Data'!B26","v":"Motor Vehicles"},{"$f":"_xlfn.XLOOKUP(X90,'Control panel'!$L$7:$L$37,'Control panel'!$P$7:$P$37)","v":1},0,{"$f":"_xlfn.XLOOKUP(W90,'BBM Costs'!$Q$6:$U$6,_xlfn.XLOOKUP(X90,'BBM Costs'!$P$7:$P$37,'BBM Costs'!$Q$7:$U$37))*_xlfn.XLOOKUP(X90,'Control panel'!$L$7:$L$37,'Control panel'!$M$7:$M$37)","v":0},{"$f":"_xlfn.XLOOKUP(W90,'BBM Costs'!$X$6:$AB$6,_xlfn.XLOOKUP(X90,'BBM Costs'!$W$7:$W$37,'BBM Costs'!$X$7:$AB$37))*_xlfn.XLOOKUP(X90,'Control panel'!$S$7:$S$37,'Control panel'!$T$7:$T$37)","v":0},0]
[null,null,null,null,null,null,null,null,null,null,null,null,null,null,null,null,null,null,null,null,null,null,"2027-28",{"$f":"'PTRM Data'!B27","v":"Plant & Equipment"},{"$f":"_xlfn.XLOOKUP(X91,'Control panel'!$L$7:$L$37,'Control panel'!$P$7:$P$37)","v":1},0,{"$f":"_xlfn.XLOOKUP(W91,'BBM Costs'!$Q$6:$U$6,_xlfn.XLOOKUP(X91,'BBM Costs'!$P$7:$P$37,'BBM Costs'!$Q$7:$U$37))*_xlfn.XLOOKUP(X91,'Control panel'!$L$7:$L$37,'Control panel'!$M$7:$M$37)","v":0},{"$f":"_xlfn.XLOOKUP(W91,'BBM Costs'!$X$6:$AB$6,_xlfn.XLOOKUP(X91,'BBM Costs'!$W$7:$W$37,'BBM Costs'!$X$7:$AB$37))*_xlfn.XLOOKUP(X91,'Control panel'!$S$7:$S$37,'Control panel'!$T$7:$T$37)","v":0},0]
[null,null,null,null,null,null,null,null,null,null,null,null,null,null,null,null,null,null,null,null,null,null,"2027-28",{"$f":"'PTRM Data'!B28","v":"Buildings"},{"$f":"_xlfn.XLOOKUP(X92,'Control panel'!$L$7:$L$37,'Control panel'!$P$7:$P$37)","v":1},0,{"$f":"_xlfn.XLOOKUP(W92,'BBM Costs'!$Q$6:$U$6,_xlfn.XLOOKUP(X92,'BBM Costs'!$P$7:$P$37,'BBM Costs'!$Q$7:$U$37))*_xlfn.XLOOKUP(X92,'Control panel'!$L$7:$L$37,'Control panel'!$M$7:$M$37)","v":0},{"$f":"_xlfn.XLOOKUP(W92,'BBM Costs'!$X$6:$AB$6,_xlfn.XLOOKUP(X92,'BBM Costs'!$W$7:$W$37,'BBM Costs'!$X$7:$AB$37))*_xlfn.XLOOKUP(X92,'Control panel'!$S$7:$S$37,'Control panel'!$T$7:$T$37)","v":0},0]
[null,null,null,null,null,null,null,null,null,null,null,null,null,null,null,null,null,null,null,null,null,null,"2027-28",{"$f":"'PTRM Data'!B29","v":"Office Equipment & Furniture"},{"$f":"_xlfn.XLOOKUP(X93,'Control panel'!$L$7:$L$37,'Control panel'!$P$7:$P$37)","v":1},-1.8153650966914847E-2,{"$f":"_xlfn.XLOOKUP(W93,'BBM Costs'!$Q$6:$U$6,_xlfn.XLOOKUP(X93,'BBM Costs'!$P$7:$P$37,'BBM Costs'!$Q$7:$U$37))*_xlfn.XLOOKUP(X93,'Control panel'!$L$7:$L$37,'Control panel'!$M$7:$M$37)","v":0},{"$f":"_xlfn.XLOOKUP(W93,'BBM Costs'!$X$6:$AB$6,_xlfn.XLOOKUP(X93,'BBM Costs'!$W$7:$W$37,'BBM Costs'!$X$7:$AB$37))*_xlfn.XLOOKUP(X93,'Control panel'!$S$7:$S$37,'Control panel'!$T$7:$T$37)","v":0},-1.8153650966914847E-2]
[null,null,null,null,null,null,null,null,null,null,null,null,null,null,null,null,null,null,null,null,null,null,"2027-28",{"$f":"'PTRM Data'!B30","v":"Initial Leases (10 yr life)"},{"$f":"_xlfn.XLOOKUP(X94,'Control panel'!$L$7:$L$37,'Control panel'!$P$7:$P$37)","v":1},0,{"$f":"_xlfn.XLOOKUP(W94,'BBM Costs'!$Q$6:$U$6,_xlfn.XLOOKUP(X94,'BBM Costs'!$P$7:$P$37,'BBM Costs'!$Q$7:$U$37))*_xlfn.XLOOKUP(X94,'Control panel'!$L$7:$L$37,'Control panel'!$M$7:$M$37)","v":0},{"$f":"_xlfn.XLOOKUP(W94,'BBM Costs'!$X$6:$AB$6,_xlfn.XLOOKUP(X94,'BBM Costs'!$W$7:$W$37,'BBM Costs'!$X$7:$AB$37))*_xlfn.XLOOKUP(X94,'Control panel'!$S$7:$S$37,'Control panel'!$T$7:$T$37)","v":0},0]
[null,null,null,null,null,null,null,null,null,null,null,null,null,null,null,null,null,null,null,null,null,null,"2027-28",{"$f":"'PTRM Data'!B31","v":"Lease Extensions (5yr Life)"},{"$f":"_xlfn.XLOOKUP(X95,'Control panel'!$L$7:$L$37,'Control panel'!$P$7:$P$37)","v":1},0,{"$f":"_xlfn.XLOOKUP(W95,'BBM Costs'!$Q$6:$U$6,_xlfn.XLOOKUP(X95,'BBM Costs'!$P$7:$P$37,'BBM Costs'!$Q$7:$U$37))*_xlfn.XLOOKUP(X95,'Control panel'!$L$7:$L$37,'Control panel'!$M$7:$M$37)","v":0},{"$f":"_xlfn.XLOOKUP(W95,'BBM Costs'!$X$6:$AB$6,_xlfn.XLOOKUP(X95,'BBM Costs'!$W$7:$W$37,'BBM Costs'!$X$7:$AB$37))*_xlfn.XLOOKUP(X95,'Control panel'!$S$7:$S$37,'Control panel'!$T$7:$T$37)","v":0},0]
[null,null,null,null,null,null,null,null,null,null,null,null,null,null,null,null,null,null,null,null,null,null,"2027-28",{"$f":"'PTRM Data'!B32","v":"Land & Easements - combined"},{"$f":"_xlfn.XLOOKUP(X96,'Control panel'!$L$7:$L$37,'Control panel'!$P$7:$P$37)","v":1},0,{"$f":"_xlfn.XLOOKUP(W96,'BBM Costs'!$Q$6:$U$6,_xlfn.XLOOKUP(X96,'BBM Costs'!$P$7:$P$37,'BBM Costs'!$Q$7:$U$37))*_xlfn.XLOOKUP(X96,'Control panel'!$L$7:$L$37,'Control panel'!$M$7:$M$37)","v":0},{"$f":"_xlfn.XLOOKUP(W96,'BBM Costs'!$X$6:$AB$6,_xlfn.XLOOKUP(X96,'BBM Costs'!$W$7:$W$37,'BBM Costs'!$X$7:$AB$37))*_xlfn.XLOOKUP(X96,'Control panel'!$S$7:$S$37,'Control panel'!$T$7:$T$37)","v":0},0]
[null,null,null,null,null,null,null,null,null,null,null,null,null,null,null,null,null,null,null,null,null,null,"2027-28",{"$f":"'PTRM Data'!B33","v":"Communications"},{"$f":"_xlfn.XLOOKUP(X97,'Control panel'!$L$7:$L$37,'Control panel'!$P$7:$P$37)","v":1},0,{"$f":"_xlfn.XLOOKUP(W97,'BBM Costs'!$Q$6:$U$6,_xlfn.XLOOKUP(X97,'BBM Costs'!$P$7:$P$37,'BBM Costs'!$Q$7:$U$37))*_xlfn.XLOOKUP(X97,'Control panel'!$L$7:$L$37,'Control panel'!$M$7:$M$37)","v":0},{"$f":"_xlfn.XLOOKUP(W97,'BBM Costs'!$X$6:$AB$6,_xlfn.XLOOKUP(X97,'BBM Costs'!$W$7:$W$37,'BBM Costs'!$X$7:$AB$37))*_xlfn.XLOOKUP(X97,'Control panel'!$S$7:$S$37,'Control panel'!$T$7:$T$37)","v":0},0]
[null,null,null,null,null,null,null,null,null,null,null,null,null,null,null,null,null,null,null,null,null,null,"2027-28",{"$f":"'PTRM Data'!B34","v":"In-house software"},{"$f":"_xlfn.XLOOKUP(X98,'Control panel'!$L$7:$L$37,'Control panel'!$P$7:$P$37)","v":1},0,{"$f":"_xlfn.XLOOKUP(W98,'BBM Costs'!$Q$6:$U$6,_xlfn.XLOOKUP(X98,'BBM Costs'!$P$7:$P$37,'BBM Costs'!$Q$7:$U$37))*_xlfn.XLOOKUP(X98,'Control panel'!$L$7:$L$37,'Control panel'!$M$7:$M$37)","v":0},{"$f":"_xlfn.XLOOKUP(W98,'BBM Costs'!$X$6:$AB$6,_xlfn.XLOOKUP(X98,'BBM Costs'!$W$7:$W$37,'BBM Costs'!$X$7:$AB$37))*_xlfn.XLOOKUP(X98,'Control panel'!$S$7:$S$37,'Control panel'!$T$7:$T$37)","v":0},0]
[null,null,null,null,null,null,null,null,null,null,null,null,null,null,null,null,null,null,null,null,null,null,"2027-28",{"$f":"'PTRM Data'!B35","v":"IT Systems"},{"$f":"_xlfn.XLOOKUP(X99,'Control panel'!$L$7:$L$37,'Control panel'!$P$7:$P$37)","v":1},0,{"$f":"_xlfn.XLOOKUP(W99,'BBM Costs'!$Q$6:$U$6,_xlfn.XLOOKUP(X99,'BBM Costs'!$P$7:$P$37,'BBM Costs'!$Q$7:$U$37))*_xlfn.XLOOKUP(X99,'Control panel'!$L$7:$L$37,'Control panel'!$M$7:$M$37)","v":0},{"$f":"_xlfn.XLOOKUP(W99,'BBM Costs'!$X$6:$AB$6,_xlfn.XLOOKUP(X99,'BBM Costs'!$W$7:$W$37,'BBM Costs'!$X$7:$AB$37))*_xlfn.XLOOKUP(X99,'Control panel'!$S$7:$S$37,'Control panel'!$T$7:$T$37)","v":0},0]
[null,null,null,null,null,null,null,null,null,null,null,null,null,null,null,null,null,null,null,null,null,null,"2027-28",{"$f":"'PTRM Data'!B36","v":"Legacy ICT Assets"},{"$f":"_xlfn.XLOOKUP(X100,'Control panel'!$L$7:$L$37,'Control panel'!$P$7:$P$37)","v":1},0,{"$f":"_xlfn.XLOOKUP(W100,'BBM Costs'!$Q$6:$U$6,_xlfn.XLOOKUP(X100,'BBM Costs'!$P$7:$P$37,'BBM Costs'!$Q$7:$U$37))*_xlfn.XLOOKUP(X100,'Control panel'!$L$7:$L$37,'Control panel'!$M$7:$M$37)","v":0},{"$f":"_xlfn.XLOOKUP(W100,'BBM Costs'!$X$6:$AB$6,_xlfn.XLOOKUP(X100,'BBM Costs'!$W$7:$W$37,'BBM Costs'!$X$7:$AB$37))*_xlfn.XLOOKUP(X100,'Control panel'!$S$7:$S$37,'Control panel'!$T$7:$T$37)","v":0},0]
[null,null,null,null,null,null,null,null,null,null,null,null,null,null,null,null,null,null,null,null,null,null,"2027-28",{"$f":"'PTRM Data'!B37","v":"Buildings - capital works"},{"$f":"_xlfn.XLOOKUP(X101,'Control panel'!$L$7:$L$37,'Control panel'!$P$7:$P$37)","v":1},0,{"$f":"_xlfn.XLOOKUP(W101,'BBM Costs'!$Q$6:$U$6,_xlfn.XLOOKUP(X101,'BBM Costs'!$P$7:$P$37,'BBM Costs'!$Q$7:$U$37))*_xlfn.XLOOKUP(X101,'Control panel'!$L$7:$L$37,'Control panel'!$M$7:$M$37)","v":0},{"$f":"_xlfn.XLOOKUP(W101,'BBM Costs'!$X$6:$AB$6,_xlfn.XLOOKUP(X101,'BBM Costs'!$W$7:$W$37,'BBM Costs'!$X$7:$AB$37))*_xlfn.XLOOKUP(X101,'Control panel'!$S$7:$S$37,'Control panel'!$T$7:$T$37)","v":0},0]
[null,null,null,null,null,null,null,null,null,null,null,null,null,null,null,null,null,null,null,null,null,null,"2028-29",{"$f":"'PTRM Data'!B7","v":"Overhead Sub-Transmission Lines"},{"$f":"_xlfn.XLOOKUP(X102,'Control panel'!$L$7:$L$37,'Control panel'!$P$7:$P$37)","v":1},8.5050038168325486,{"$f":"_xlfn.XLOOKUP(W102,'BBM Costs'!$Q$6:$U$6,_xlfn.XLOOKUP(X102,'BBM Costs'!$P$7:$P$37,'BBM Costs'!$Q$7:$U$37))*_xlfn.XLOOKUP(X102,'Control panel'!$L$7:$L$37,'Control panel'!$M$7:$M$37)","v":0},{"$f":"_xlfn.XLOOKUP(W102,'BBM Costs'!$X$6:$AB$6,_xlfn.XLOOKUP(X102,'BBM Costs'!$W$7:$W$37,'BBM Costs'!$X$7:$AB$37))*_xlfn.XLOOKUP(X102,'Control panel'!$S$7:$S$37,'Control panel'!$T$7:$T$37)","v":0},8.5050038168325486]
[null,null,null,null,null,null,null,null,null,null,null,null,null,null,null,null,null,null,null,null,null,null,"2028-29",{"$f":"'PTRM Data'!B8","v":"Underground Sub-Transmission Cables"},{"$f":"_xlfn.XLOOKUP(X103,'Control panel'!$L$7:$L$37,'Control panel'!$P$7:$P$37)","v":1},0.37500315783204358,{"$f":"_xlfn.XLOOKUP(W103,'BBM Costs'!$Q$6:$U$6,_xlfn.XLOOKUP(X103,'BBM Costs'!$P$7:$P$37,'BBM Costs'!$Q$7:$U$37))*_xlfn.XLOOKUP(X103,'Control panel'!$L$7:$L$37,'Control panel'!$M$7:$M$37)","v":0},{"$f":"_xlfn.XLOOKUP(W103,'BBM Costs'!$X$6:$AB$6,_xlfn.XLOOKUP(X103,'BBM Costs'!$W$7:$W$37,'BBM Costs'!$X$7:$AB$37))*_xlfn.XLOOKUP(X103,'Control panel'!$S$7:$S$37,'Control panel'!$T$7:$T$37)","v":0},0.37500315783204358]
[null,null,null,null,null,null,null,null,null,null,null,null,null,null,null,null,null,null,null,null,null,null,"2028-29",{"$f":"'PTRM Data'!B9","v":"Overhead Distribution Lines"},{"$f":"_xlfn.XLOOKUP(X104,'Control panel'!$L$7:$L$37,'Control panel'!$P$7:$P$37)","v":0.57000000000000006},34.870373508403688,{"$f":"_xlfn.XLOOKUP(W104,'BBM Costs'!$Q$6:$U$6,_xlfn.XLOOKUP(X104,'BBM Costs'!$P$7:$P$37,'BBM Costs'!$Q$7:$U$37))*_xlfn.XLOOKUP(X104,'Control panel'!$L$7:$L$37,'Control panel'!$M$7:$M$37)","v":5.9880572026983385},{"$f":"_xlfn.XLOOKUP(W104,'BBM Costs'!$X$6:$AB$6,_xlfn.XLOOKUP(X104,'BBM Costs'!$W$7:$W$37,'BBM Costs'!$X$7:$AB$37))*_xlfn.XLOOKUP(X104,'Control panel'!$S$7:$S$37,'Control panel'!$T$7:$T$37)","v":214.02242429291908},254.8808550040211]
[null,null,null,null,null,null,null,null,null,null,null,null,null,null,null,null,null,null,null,null,null,null,"2028-29",{"$f":"'PTRM Data'!B10","v":"Underground Distribution Cables"},{"$f":"_xlfn.XLOOKUP(X105,'Control panel'!$L$7:$L$37,'Control panel'!$P$7:$P$37)","v":0.57000000000000006},6.1659335684823056,{"$f":"_xlfn.XLOOKUP(W105,'BBM Costs'!$Q$6:$U$6,_xlfn.XLOOKUP(X105,'BBM Costs'!$P$7:$P$37,'BBM Costs'!$Q$7:$U$37))*_xlfn.XLOOKUP(X105,'Control panel'!$L$7:$L$37,'Control panel'!$M$7:$M$37)","v":-0.87205164985277217},{"$f":"_xlfn.XLOOKUP(W105,'BBM Costs'!$X$6:$AB$6,_xlfn.XLOOKUP(X105,'BBM Costs'!$W$7:$W$37,'BBM Costs'!$X$7:$AB$37))*_xlfn.XLOOKUP(X105,'Control panel'!$S$7:$S$37,'Control panel'!$T$7:$T$37)","v":33.535137054713459},38.82901897334299]
[null,null,null,null,null,null,null,null,null,null,null,null,null,null,null,null,null,null,null,null,null,null,"2028-29",{"$f":"'PTRM Data'!B11","v":"Distribution Equipment"},{"$f":"_xlfn.XLOOKUP(X106,'Control panel'!$L$7:$L$37,'Control panel'!$P$7:$P$37)","v":0.57000000000000006},0.13042695531800971,{"$f":"_xlfn.XLOOKUP(W106,'BBM Costs'!$Q$6:$U$6,_xlfn.XLOOKUP(X106,'BBM Costs'!$P$7:$P$37,'BBM Costs'!$Q$7:$U$37))*_xlfn.XLOOKUP(X106,'Control panel'!$L$7:$L$37,'Control panel'!$M$7:$M$37)","v":0.69694250774955846},{"$f":"_xlfn.XLOOKUP(W106,'BBM Costs'!$X$6:$AB$6,_xlfn.XLOOKUP(X106,'BBM Costs'!$W$7:$W$37,'BBM Costs'!$X$7:$AB$37))*_xlfn.XLOOKUP(X106,'Control panel'!$S$7:$S$37,'Control panel'!$T$7:$T$37)","v":0.82425840193134392},1.651627864998912]
[null,null,null,null,null,null,null,null,null,null,null,null,null,null,null,null,null,null,null,null,null,null,"2028-29",{"$f":"'PTRM Data'!B12","v":"Substation Bays"},{"$f":"_xlfn.XLOOKUP(X107,'Control panel'!$L$7:$L$37,'Control panel'!$P$7:$P$37)","v":1},9.4904373231381314,{"$f":"_xlfn.XLOOKUP(W107,'BBM Costs'!$Q$6:$U$6,_xlfn.XLOOKUP(X107,'BBM Costs'!$P$7:$P$37,'BBM Costs'!$Q$7:$U$37))*_xlfn.XLOOKUP(X107,'Control panel'!$L$7:$L$37,'Control panel'!$M$7:$M$37)","v":0},{"$f":"_xlfn.XLOOKUP(W107,'BBM Costs'!$X$6:$AB$6,_xlfn.XLOOKUP(X107,'BBM Costs'!$W$7:$W$37,'BBM Costs'!$X$7:$AB$37))*_xlfn.XLOOKUP(X107,'Control panel'!$S$7:$S$37,'Control panel'!$T$7:$T$37)","v":0},9.4904373231381314]
[null,null,null,null,null,null,null,null,null,null,null,null,null,null,null,null,null,null,null,null,null,null,"2028-29",{"$f":"'PTRM Data'!B13","v":"Substation Establishment"},{"$f":"_xlfn.XLOOKUP(X108,'Control panel'!$L$7:$L$37,'Control panel'!$P$7:$P$37)","v":1},2.3955461754074978,{"$f":"_xlfn.XLOOKUP(W108,'BBM Costs'!$Q$6:$U$6,_xlfn.XLOOKUP(X108,'BBM Costs'!$P$7:$P$37,'BBM Costs'!$Q$7:$U$37))*_xlfn.XLOOKUP(X108,'Control panel'!$L$7:$L$37,'Control panel'!$M$7:$M$37)","v":0},{"$f":"_xlfn.XLOOKUP(W108,'BBM Costs'!$X$6:$AB$6,_xlfn.XLOOKUP(X108,'BBM Costs'!$W$7:$W$37,'BBM Costs'!$X$7:$AB$37))*_xlfn.XLOOKUP(X108,'Control panel'!$S$7:$S$37,'Control panel'!$T$7:$T$37)","v":0},2.3955461754074978]
[null,null,null,null,null,null,null,null,null,null,null,null,null,null,null,null,null,null,null,null,null,null,"2028-29",{"$f":"'PTRM Data'!B14","v":"Distribution Substation Switchgear"},{"$f":"_xlfn.XLOOKUP(X109,'Control panel'!$L$7:$L$37,'Control panel'!$P$7:$P$37)","v":0.57000000000000006},3.605916681739866,{"$f":"_xlfn.XLOOKUP(W109,'BBM Costs'!$Q$6:$U$6,_xlfn.XLOOKUP(X109,'BBM Costs'!$P$7:$P$37,'BBM Costs'!$Q$7:$U$37))*_xlfn.XLOOKUP(X109,'Control panel'!$L$7:$L$37,'Control panel'!$M$7:$M$37)","v":0.9500980431601479},{"$f":"_xlfn.XLOOKUP(W109,'BBM Costs'!$X$6:$AB$6,_xlfn.XLOOKUP(X109,'BBM Costs'!$W$7:$W$37,'BBM Costs'!$X$7:$AB$37))*_xlfn.XLOOKUP(X109,'Control panel'!$S$7:$S$37,'Control panel'!$T$7:$T$37)","v":22.399413109422621},26.955427834322634]
[null,null,null,null,null,null,null,null,null,null,null,null,null,null,null,null,null,null,null,null,null,null,"2028-29",{"$f":"'PTRM Data'!B15","v":"Zone Transformers"},{"$f":"_xlfn.XLOOKUP(X110,'Control panel'!$L$7:$L$37,'Control panel'!$P$7:$P$37)","v":1},1.933250664422562,{"$f":"_xlfn.XLOOKUP(W110,'BBM Costs'!$Q$6:$U$6,_xlfn.XLOOKUP(X110,'BBM Costs'!$P$7:$P$37,'BBM Costs'!$Q$7:$U$37))*_xlfn.XLOOKUP(X110,'Control panel'!$L$7:$L$37,'Control panel'!$M$7:$M$37)","v":0},{"$f":"_xlfn.XLOOKUP(W110,'BBM Costs'!$X$6:$AB$6,_xlfn.XLOOKUP(X110,'BBM Costs'!$W$7:$W$37,'BBM Costs'!$X$7:$AB$37))*_xlfn.XLOOKUP(X110,'Control panel'!$S$7:$S$37,'Control panel'!$T$7:$T$37)","v":0},1.933250664422562]
[null,null,null,null,null,null,null,null,null,null,null,null,null,null,null,null,null,null,null,null,null,null,"2028-29",{"$f":"'PTRM Data'!B16","v":"Distribution Transformers"},{"$f":"_xlfn.XLOOKUP(X111,'Control panel'!$L$7:$L$37,'Control panel'!$P$7:$P$37)","v":0.57000000000000006},9.2207460928004767,{"$f":"_xlfn.XLOOKUP(W111,'BBM Costs'!$Q$6:$U$6,_xlfn.XLOOKUP(X111,'BBM Costs'!$P$7:$P$37,'BBM Costs'!$Q$7:$U$37))*_xlfn.XLOOKUP(X111,'Control panel'!$L$7:$L$37,'Control panel'!$M$7:$M$37)","v":12.361523532676676},{"$f":"_xlfn.XLOOKUP(W111,'BBM Costs'!$X$6:$AB$6,_xlfn.XLOOKUP(X111,'BBM Costs'!$W$7:$W$37,'BBM Costs'!$X$7:$AB$37))*_xlfn.XLOOKUP(X111,'Control panel'!$S$7:$S$37,'Control panel'!$T$7:$T$37)","v":52.725839577718034},74.308109203195187]
[null,null,null,null,null,null,null,null,null,null,null,null,null,null,null,null,null,null,null,null,null,null,"2028-29",{"$f":"'PTRM Data'!B17","v":"Low Voltage Services"},{"$f":"_xlfn.XLOOKUP(X112,'Control panel'!$L$7:$L$37,'Control panel'!$P$7:$P$37)","v":0},3.0066673166709204,{"$f":"_xlfn.XLOOKUP(W112,'BBM Costs'!$Q$6:$U$6,_xlfn.XLOOKUP(X112,'BBM Costs'!$P$7:$P$37,'BBM Costs'!$Q$7:$U$37))*_xlfn.XLOOKUP(X112,'Control panel'!$L$7:$L$37,'Control panel'!$M$7:$M$37)","v":0},{"$f":"_xlfn.XLOOKUP(W112,'BBM Costs'!$X$6:$AB$6,_xlfn.XLOOKUP(X112,'BBM Costs'!$W$7:$W$37,'BBM Costs'!$X$7:$AB$37))*_xlfn.XLOOKUP(X112,'Control panel'!$S$7:$S$37,'Control panel'!$T$7:$T$37)","v":0},3.0066673166709204]
[null,null,null,null,null,null,null,null,null,null,null,null,null,null,null,null,null,null,null,null,null,null,"2028-29",{"$f":"'PTRM Data'!B18","v":"Metering"},{"$f":"_xlfn.XLOOKUP(X113,'Control panel'!$L$7:$L$37,'Control panel'!$P$7:$P$37)","v":1},0,{"$f":"_xlfn.XLOOKUP(W113,'BBM Costs'!$Q$6:$U$6,_xlfn.XLOOKUP(X113,'BBM Costs'!$P$7:$P$37,'BBM Costs'!$Q$7:$U$37))*_xlfn.XLOOKUP(X113,'Control panel'!$L$7:$L$37,'Control panel'!$M$7:$M$37)","v":0},{"$f":"_xlfn.XLOOKUP(W113,'BBM Costs'!$X$6:$AB$6,_xlfn.XLOOKUP(X113,'BBM Costs'!$W$7:$W$37,'BBM Costs'!$X$7:$AB$37))*_xlfn.XLOOKUP(X113,'Control panel'!$S$7:$S$37,'Control panel'!$T$7:$T$37)","v":0},0]
[null,null,null,null,null,null,null,null,null,null,null,null,null,null,null,null,null,null,null,null,null,null,"2028-29",{"$f":"'PTRM Data'!B19","v":"Communications – Pilot Wires"},{"$f":"_xlfn.XLOOKUP(X114,'Control panel'!$L$7:$L$37,'Control panel'!$P$7:$P$37)","v":0},1.0598729310505686,{"$f":"_xlfn.XLOOKUP(W114,'BBM Costs'!$Q$6:$U$6,_xlfn.XLOOKUP(X114,'BBM Costs'!$P$7:$P$37,'BBM Costs'!$Q$7:$U$37))*_xlfn.XLOOKUP(X114,'Control panel'!$L$7:$L$37,'Control panel'!$M$7:$M$37)","v":0},{"$f":"_xlfn.XLOOKUP(W114,'BBM Costs'!$X$6:$AB$6,_xlfn.XLOOKUP(X114,'BBM Costs'!$W$7:$W$37,'BBM Costs'!$X$7:$AB$37))*_xlfn.XLOOKUP(X114,'Control panel'!$S$7:$S$37,'Control panel'!$T$7:$T$37)","v":0},1.0598729310505686]
[]
[null,null,null,null,null,null,null,null,null,null,null,null,null,null,null,null,null,null,null,null,null,null,"2028-29",{"$f":"'PTRM Data'!B21","v":"Land & Easements (System) - combined"},{"$f":"_xlfn.XLOOKUP(X116,'Control panel'!$L$7:$L$37,'Control panel'!$P$7:$P$37)","v":1},0.30320340887408148,{"$f":"_xlfn.XLOOKUP(W116,'BBM Costs'!$Q$6:$U$6,_xlfn.XLOOKUP(X116,'BBM Costs'!$P$7:$P$37,'BBM Costs'!$Q$7:$U$37))*_xlfn.XLOOKUP(X116,'Control panel'!$L$7:$L$37,'Control panel'!$M$7:$M$37)","v":0},{"$f":"_xlfn.XLOOKUP(W116,'BBM Costs'!$X$6:$AB$6,_xlfn.XLOOKUP(X116,'BBM Costs'!$W$7:$W$37,'BBM Costs'!$X$7:$AB$37))*_xlfn.XLOOKUP(X116,'Control panel'!$S$7:$S$37,'Control panel'!$T$7:$T$37)","v":0},0.30320340887408148]
[null,null,null,null,null,null,null,null,null,null,null,null,null,null,null,null,null,null,null,null,null,null,"2028-29",{"$f":"'PTRM Data'!B22","v":"Land Improvements"},{"$f":"_xlfn.XLOOKUP(X117,'Control panel'!$L$7:$L$37,'Control panel'!$P$7:$P$37)","v":1},0,{"$f":"_xlfn.XLOOKUP(W117,'BBM Costs'!$Q$6:$U$6,_xlfn.XLOOKUP(X117,'BBM Costs'!$P$7:$P$37,'BBM Costs'!$Q$7:$U$37))*_xlfn.XLOOKUP(X117,'Control panel'!$L$7:$L$37,'Control panel'!$M$7:$M$37)","v":0},{"$f":"_xlfn.XLOOKUP(W117,'BBM Costs'!$X$6:$AB$6,_xlfn.XLOOKUP(X117,'BBM Costs'!$W$7:$W$37,'BBM Costs'!$X$7:$AB$37))*_xlfn.XLOOKUP(X117,'Control panel'!$S$7:$S$37,'Control panel'!$T$7:$T$37)","v":0},0]
[null,null,null,null,null,null,null,null,null,null,null,null,null,null,null,null,null,null,null,null,null,null,"2028-29",{"$f":"'PTRM Data'!B23","v":"Control Centre - SCADA"},{"$f":"_xlfn.XLOOKUP(X118,'Control panel'!$L$7:$L$37,'Control panel'!$P$7:$P$37)","v":1},0.11946500479790269,{"$f":"_xlfn.XLOOKUP(W118,'BBM Costs'!$Q$6:$U$6,_xlfn.XLOOKUP(X118,'BBM Costs'!$P$7:$P$37,'BBM Costs'!$Q$7:$U$37))*_xlfn.XLOOKUP(X118,'Control panel'!$L$7:$L$37,'Control panel'!$M$7:$M$37)","v":0},{"$f":"_xlfn.XLOOKUP(W118,'BBM Costs'!$X$6:$AB$6,_xlfn.XLOOKUP(X118,'BBM Costs'!$W$7:$W$37,'BBM Costs'!$X$7:$AB$37))*_xlfn.XLOOKUP(X118,'Control panel'!$S$7:$S$37,'Control panel'!$T$7:$T$37)","v":0},0.11946500479790269]
[null,null,null,null,null,null,null,null,null,null,null,null,null,null,null,null,null,null,null,null,null,null,"2028-29",{"$f":"'PTRM Data'!B24","v":"Other Equipment"},{"$f":"_xlfn.XLOOKUP(X119,'Control panel'!$L$7:$L$37,'Control panel'!$P$7:$P$37)","v":1},8.8498088031963712E-3,{"$f":"_xlfn.XLOOKUP(W119,'BBM Costs'!$Q$6:$U$6,_xlfn.XLOOKUP(X119,'BBM Costs'!$P$7:$P$37,'BBM Costs'!$Q$7:$U$37))*_xlfn.XLOOKUP(X119,'Control panel'!$L$7:$L$37,'Control panel'!$M$7:$M$37)","v":0},{"$f":"_xlfn.XLOOKUP(W119,'BBM Costs'!$X$6:$AB$6,_xlfn.XLOOKUP(X119,'BBM Costs'!$W$7:$W$37,'BBM Costs'!$X$7:$AB$37))*_xlfn.XLOOKUP(X119,'Control panel'!$S$7:$S$37,'Control panel'!$T$7:$T$37)","v":0},8.8498088031963712E-3]
[null,null,null,null,null,null,null,null,null,null,null,null,null,null,null,null,null,null,null,null,null,null,"2028-29",{"$f":"'PTRM Data'!B25","v":"Generation Assets"},{"$f":"_xlfn.XLOOKUP(X120,'Control panel'!$L$7:$L$37,'Control panel'!$P$7:$P$37)","v":1},0.11160926075808847,{"$f":"_xlfn.XLOOKUP(W120,'BBM Costs'!$Q$6:$U$6,_xlfn.XLOOKUP(X120,'BBM Costs'!$P$7:$P$37,'BBM Costs'!$Q$7:$U$37))*_xlfn.XLOOKUP(X120,'Control panel'!$L$7:$L$37,'Control panel'!$M$7:$M$37)","v":0},{"$f":"_xlfn.XLOOKUP(W120,'BBM Costs'!$X$6:$AB$6,_xlfn.XLOOKUP(X120,'BBM Costs'!$W$7:$W$37,'BBM Costs'!$X$7:$AB$37))*_xlfn.XLOOKUP(X120,'Control panel'!$S$7:$S$37,'Control panel'!$T$7:$T$37)","v":0},0.11160926075808847]
[null,null,null,null,null,null,null,null,null,null,null,null,null,null,null,null,null,null,null,null,null,null,"2028-29",{"$f":"'PTRM Data'!B26","v":"Motor Vehicles"},{"$f":"_xlfn.XLOOKUP(X121,'Control panel'!$L$7:$L$37,'Control panel'!$P$7:$P$37)","v":1},0,{"$f":"_xlfn.XLOOKUP(W121,'BBM Costs'!$Q$6:$U$6,_xlfn.XLOOKUP(X121,'BBM Costs'!$P$7:$P$37,'BBM Costs'!$Q$7:$U$37))*_xlfn.XLOOKUP(X121,'Control panel'!$L$7:$L$37,'Control panel'!$M$7:$M$37)","v":0},{"$f":"_xlfn.XLOOKUP(W121,'BBM Costs'!$X$6:$AB$6,_xlfn.XLOOKUP(X121,'BBM Costs'!$W$7:$W$37,'BBM Costs'!$X$7:$AB$37))*_xlfn.XLOOKUP(X121,'Control panel'!$S$7:$S$37,'Control panel'!$T$7:$T$37)","v":0},0]
[null,null,null,null,null,null,null,null,null,null,null,null,null,null,null,null,null,null,null,null,null,null,"2028-29",{"$f":"'PTRM Data'!B27","v":"Plant & Equipment"},{"$f":"_xlfn.XLOOKUP(X122,'Control panel'!$L$7:$L$37,'Control panel'!$P$7:$P$37)","v":1},0,{"$f":"_xlfn.XLOOKUP(W122,'BBM Costs'!$Q$6:$U$6,_xlfn.XLOOKUP(X122,'BBM Costs'!$P$7:$P$37,'BBM Costs'!$Q$7:$U$37))*_xlfn.XLOOKUP(X122,'Control panel'!$L$7:$L$37,'Control panel'!$M$7:$M$37)","v":0},{"$f":"_xlfn.XLOOKUP(W122,'BBM Costs'!$X$6:$AB$6,_xlfn.XLOOKUP(X122,'BBM Costs'!$W$7:$W$37,'BBM Costs'!$X$7:$AB$37))*_xlfn.XLOOKUP(X122,'Control panel'!$S$7:$S$37,'Control panel'!$T$7:$T$37)","v":0},0]
[null,null,null,null,null,null,null,null,null,null,null,null,null,null,null,null,null,null,null,null,null,null,"2028-29",{"$f":"'PTRM Data'!B28","v":"Buildings"},{"$f":"_xlfn.XLOOKUP(X123,'Control panel'!$L$7:$L$37,'Control panel'!$P$7:$P$37)","v":1},0,{"$f":"_xlfn.XLOOKUP(W123,'BBM Costs'!$Q$6:$U$6,_xlfn.XLOOKUP(X123,'BBM Costs'!$P$7:$P$37,'BBM Costs'!$Q$7:$U$37))*_xlfn.XLOOKUP(X123,'Control panel'!$L$7:$L$37,'Control panel'!$M$7:$M$37)","v":0},{"$f":"_xlfn.XLOOKUP(W123,'BBM Costs'!$X$6:$AB$6,_xlfn.XLOOKUP(X123,'BBM Costs'!$W$7:$W$37,'BBM Costs'!$X$7:$AB$37))*_xlfn.XLOOKUP(X123,'Control panel'!$S$7:$S$37,'Control panel'!$T$7:$T$37)","v":0},0]
[null,null,null,null,null,null,null,null,null,null,null,null,null,null,null,null,null,null,null,null,null,null,"2028-29",{"$f":"'PTRM Data'!B29","v":"Office Equipment & Furniture"},{"$f":"_xlfn.XLOOKUP(X124,'Control panel'!$L$7:$L$37,'Control panel'!$P$7:$P$37)","v":1},-1.8447097283660483E-2,{"$f":"_xlfn.XLOOKUP(W124,'BBM Costs'!$Q$6:$U$6,_xlfn.XLOOKUP(X124,'BBM Costs'!$P$7:$P$37,'BBM Costs'!$Q$7:$U$37))*_xlfn.XLOOKUP(X124,'Control panel'!$L$7:$L$37,'Control panel'!$M$7:$M$37)","v":0},{"$f":"_xlfn.XLOOKUP(W124,'BBM Costs'!$X$6:$AB$6,_xlfn.XLOOKUP(X124,'BBM Costs'!$W$7:$W$37,'BBM Costs'!$X$7:$AB$37))*_xlfn.XLOOKUP(X124,'Control panel'!$S$7:$S$37,'Control panel'!$T$7:$T$37)","v":0},-1.8447097283660483E-2]
[null,null,null,null,null,null,null,null,null,null,null,null,null,null,null,null,null,null,null,null,null,null,"2028-29",{"$f":"'PTRM Data'!B30","v":"Initial Leases (10 yr life)"},{"$f":"_xlfn.XLOOKUP(X125,'Control panel'!$L$7:$L$37,'Control panel'!$P$7:$P$37)","v":1},0,{"$f":"_xlfn.XLOOKUP(W125,'BBM Costs'!$Q$6:$U$6,_xlfn.XLOOKUP(X125,'BBM Costs'!$P$7:$P$37,'BBM Costs'!$Q$7:$U$37))*_xlfn.XLOOKUP(X125,'Control panel'!$L$7:$L$37,'Control panel'!$M$7:$M$37)","v":0},{"$f":"_xlfn.XLOOKUP(W125,'BBM Costs'!$X$6:$AB$6,_xlfn.XLOOKUP(X125,'BBM Costs'!$W$7:$W$37,'BBM Costs'!$X$7:$AB$37))*_xlfn.XLOOKUP(X125,'Control panel'!$S$7:$S$37,'Control panel'!$T$7:$T$37)","v":0},0]
[null,null,null,null,null,null,null,null,null,null,null,null,null,null,null,null,null,null,null,null,null,null,"2028-29",{"$f":"'PTRM Data'!B31","v":"Lease Extensions (5yr Life)"},{"$f":"_xlfn.XLOOKUP(X126,'Control panel'!$L$7:$L$37,'Control panel'!$P$7:$P$37)","v":1},0,{"$f":"_xlfn.XLOOKUP(W126,'BBM Costs'!$Q$6:$U$6,_xlfn.XLOOKUP(X126,'BBM Costs'!$P$7:$P$37,'BBM Costs'!$Q$7:$U$37))*_xlfn.XLOOKUP(X126,'Control panel'!$L$7:$L$37,'Control panel'!$M$7:$M$37)","v":0},{"$f":"_xlfn.XLOOKUP(W126,'BBM Costs'!$X$6:$AB$6,_xlfn.XLOOKUP(X126,'BBM Costs'!$W$7:$W$37,'BBM Costs'!$X$7:$AB$37))*_xlfn.XLOOKUP(X126,'Control panel'!$S$7:$S$37,'Control panel'!$T$7:$T$37)","v":0},0]
[null,null,null,null,null,null,null,null,null,null,null,null,null,null,null,null,null,null,null,null,null,null,"2028-29",{"$f":"'PTRM Data'!B32","v":"Land & Easements - combined"},{"$f":"_xlfn.XLOOKUP(X127,'Control panel'!$L$7:$L$37,'Control panel'!$P$7:$P$37)","v":1},0,{"$f":"_xlfn.XLOOKUP(W127,'BBM Costs'!$Q$6:$U$6,_xlfn.XLOOKUP(X127,'BBM Costs'!$P$7:$P$37,'BBM Costs'!$Q$7:$U$37))*_xlfn.XLOOKUP(X127,'Control panel'!$L$7:$L$37,'Control panel'!$M$7:$M$37)","v":0},{"$f":"_xlfn.XLOOKUP(W127,'BBM Costs'!$X$6:$AB$6,_xlfn.XLOOKUP(X127,'BBM Costs'!$W$7:$W$37,'BBM Costs'!$X$7:$AB$37))*_xlfn.XLOOKUP(X127,'Control panel'!$S$7:$S$37,'Control panel'!$T$7:$T$37)","v":0},0]
[null,null,null,null,null,null,null,null,null,null,null,null,null,null,null,null,null,null,null,null,null,null,"2028-29",{"$f":"'PTRM Data'!B33","v":"Communications"},{"$f":"_xlfn.XLOOKUP(X128,'Control panel'!$L$7:$L$37,'Control panel'!$P$7:$P$37)","v":1},0,{"$f":"_xlfn.XLOOKUP(W128,'BBM Costs'!$Q$6:$U$6,_xlfn.XLOOKUP(X128,'BBM Costs'!$P$7:$P$37,'BBM Costs'!$Q$7:$U$37))*_xlfn.XLOOKUP(X128,'Control panel'!$L$7:$L$37,'Control panel'!$M$7:$M$37)","v":0},{"$f":"_xlfn.XLOOKUP(W128,'BBM Costs'!$X$6:$AB$6,_xlfn.XLOOKUP(X128,'BBM Costs'!$W$7:$W$37,'BBM Costs'!$X$7:$AB$37))*_xlfn.XLOOKUP(X128,'Control panel'!$S$7:$S$37,'Control panel'!$T$7:$T$37)","v":0},0]
[null,null,null,null,null,null,null,null,null,null,null,null,null,null,null,null,null,null,null,null,null,null,"2028-29",{"$f":"'PTRM Data'!B34","v":"In-house software"},{"$f":"_xlfn.XLOOKUP(X129,'Control panel'!$L$7:$L$37,'Control panel'!$P$7:$P$37)","v":1},0,{"$f":"_xlfn.XLOOKUP(W129,'BBM Costs'!$Q$6:$U$6,_xlfn.XLOOKUP(X129,'BBM Costs'!$P$7:$P$37,'BBM Costs'!$Q$7:$U$37))*_xlfn.XLOOKUP(X129,'Control panel'!$L$7:$L$37,'Control panel'!$M$7:$M$37)","v":0},{"$f":"_xlfn.XLOOKUP(W129,'BBM Costs'!$X$6:$AB$6,_xlfn.XLOOKUP(X129,'BBM Costs'!$W$7:$W$37,'BBM Costs'!$X$7:$AB$37))*_xlfn.XLOOKUP(X129,'Control panel'!$S$7:$S$37,'Control panel'!$T$7:$T$37)","v":0},0]
[null,null,null,null,null,null,null,null,null,null,null,null,null,null,null,null,null,null,null,null,null,null,"2028-29",{"$f":"'PTRM Data'!B35","v":"IT Systems"},{"$f":"_xlfn.XLOOKUP(X130,'Control panel'!$L$7:$L$37,'Control panel'!$P$7:$P$37)","v":1},0,{"$f":"_xlfn.XLOOKUP(W130,'BBM Costs'!$Q$6:$U$6,_xlfn.XLOOKUP(X130,'BBM Costs'!$P$7:$P$37,'BBM Costs'!$Q$7:$U$37))*_xlfn.XLOOKUP(X130,'Control panel'!$L$7:$L$37,'Control panel'!$M$7:$M$37)","v":0},{"$f":"_xlfn.XLOOKUP(W130,'BBM Costs'!$X$6:$AB$6,_xlfn.XLOOKUP(X130,'BBM Costs'!$W$7:$W$37,'BBM Costs'!$X$7:$AB$37))*_xlfn.XLOOKUP(X130,'Control panel'!$S$7:$S$37,'Control panel'!$T$7:$T$37)","v":0},0]
[null,null,null,null,null,null,null,null,null,null,null,null,null,null,null,null,null,null,null,null,null,null,"2028-29",{"$f":"'PTRM Data'!B36","v":"Legacy ICT Assets"},{"$f":"_xlfn.XLOOKUP(X131,'Control panel'!$L$7:$L$37,'Control panel'!$P$7:$P$37)","v":1},0,{"$f":"_xlfn.XLOOKUP(W131,'BBM Costs'!$Q$6:$U$6,_xlfn.XLOOKUP(X131,'BBM Costs'!$P$7:$P$37,'BBM Costs'!$Q$7:$U$37))*_xlfn.XLOOKUP(X131,'Control panel'!$L$7:$L$37,'Control panel'!$M$7:$M$37)","v":0},{"$f":"_xlfn.XLOOKUP(W131,'BBM Costs'!$X$6:$AB$6,_xlfn.XLOOKUP(X131,'BBM Costs'!$W$7:$W$37,'BBM Costs'!$X$7:$AB$37))*_xlfn.XLOOKUP(X131,'Control panel'!$S$7:$S$37,'Control panel'!$T$7:$T$37)","v":0},0]
[null,null,null,null,null,null,null,null,null,null,null,null,null,null,null,null,null,null,null,null,null,null,"2028-29",{"$f":"'PTRM Data'!B37","v":"Buildings - capital works"},{"$f":"_xlfn.XLOOKUP(X132,'Control panel'!$L$7:$L$37,'Control panel'!$P$7:$P$37)","v":1},0,{"$f":"_xlfn.XLOOKUP(W132,'BBM Costs'!$Q$6:$U$6,_xlfn.XLOOKUP(X132,'BBM Costs'!$P$7:$P$37,'BBM Costs'!$Q$7:$U$37))*_xlfn.XLOOKUP(X132,'Control panel'!$L$7:$L$37,'Control panel'!$M$7:$M$37)","v":0},{"$f":"_xlfn.XLOOKUP(W132,'BBM Costs'!$X$6:$AB$6,_xlfn.XLOOKUP(X132,'BBM Costs'!$W$7:$W$37,'BBM Costs'!$X$7:$AB$37))*_xlfn.XLOOKUP(X132,'Control panel'!$S$7:$S$37,'Control panel'!$T$7:$T$37)","v":0},0]
[null,null,null,null,null,null,null,null,null,null,null,null,null,null,null,null,null,null,null,null,null,null,"2029-30",{"$f":"'PTRM Data'!B7","v":"Overhead Sub-Transmission Lines"},{"$f":"_xlfn.XLOOKUP(X133,'Control panel'!$L$7:$L$37,'Control panel'!$P$7:$P$37)","v":1},8.8427824944445828,{"$f":"_xlfn.XLOOKUP(W133,'BBM Costs'!$Q$6:$U$6,_xlfn.XLOOKUP(X133,'BBM Costs'!$P$7:$P$37,'BBM Costs'!$Q$7:$U$37))*_xlfn.XLOOKUP(X133,'Control panel'!$L$7:$L$37,'Control panel'!$M$7:$M$37)","v":0},{"$f":"_xlfn.XLOOKUP(W133,'BBM Costs'!$X$6:$AB$6,_xlfn.XLOOKUP(X133,'BBM Costs'!$W$7:$W$37,'BBM Costs'!$X$7:$AB$37))*_xlfn.XLOOKUP(X133,'Control panel'!$S$7:$S$37,'Control panel'!$T$7:$T$37)","v":0},8.8427824944445828]
[null,null,null,null,null,null,null,null,null,null,null,null,null,null,null,null,null,null,null,null,null,null,"2029-30",{"$f":"'PTRM Data'!B8","v":"Underground Sub-Transmission Cables"},{"$f":"_xlfn.XLOOKUP(X134,'Control panel'!$L$7:$L$37,'Control panel'!$P$7:$P$37)","v":1},0.38989651631615752,{"$f":"_xlfn.XLOOKUP(W134,'BBM Costs'!$Q$6:$U$6,_xlfn.XLOOKUP(X134,'BBM Costs'!$P$7:$P$37,'BBM Costs'!$Q$7:$U$37))*_xlfn.XLOOKUP(X134,'Control panel'!$L$7:$L$37,'Control panel'!$M$7:$M$37)","v":0},{"$f":"_xlfn.XLOOKUP(W134,'BBM Costs'!$X$6:$AB$6,_xlfn.XLOOKUP(X134,'BBM Costs'!$W$7:$W$37,'BBM Costs'!$X$7:$AB$37))*_xlfn.XLOOKUP(X134,'Control panel'!$S$7:$S$37,'Control panel'!$T$7:$T$37)","v":0},0.38989651631615752]
[null,null,null,null,null,null,null,null,null,null,null,null,null,null,null,null,null,null,null,null,null,null,"2029-30",{"$f":"'PTRM Data'!B9","v":"Overhead Distribution Lines"},{"$f":"_xlfn.XLOOKUP(X135,'Control panel'!$L$7:$L$37,'Control panel'!$P$7:$P$37)","v":0.57000000000000006},36.255260441457743,{"$f":"_xlfn.XLOOKUP(W135,'BBM Costs'!$Q$6:$U$6,_xlfn.XLOOKUP(X135,'BBM Costs'!$P$7:$P$37,'BBM Costs'!$Q$7:$U$37))*_xlfn.XLOOKUP(X135,'Control panel'!$L$7:$L$37,'Control panel'!$M$7:$M$37)","v":6.8726424777099},{"$f":"_xlfn.XLOOKUP(W135,'BBM Costs'!$X$6:$AB$6,_xlfn.XLOOKUP(X135,'BBM Costs'!$W$7:$W$37,'BBM Costs'!$X$7:$AB$37))*_xlfn.XLOOKUP(X135,'Control panel'!$S$7:$S$37,'Control panel'!$T$7:$T$37)","v":235.27342156739905},278.40132448656669]
[null,null,null,null,null,null,null,null,null,null,null,null,null,null,null,null,null,null,null,null,null,null,"2029-30",{"$f":"'PTRM Data'!B10","v":"Underground Distribution Cables"},{"$f":"_xlfn.XLOOKUP(X136,'Control panel'!$L$7:$L$37,'Control panel'!$P$7:$P$37)","v":0.57000000000000006},6.4108153970928488,{"$f":"_xlfn.XLOOKUP(W136,'BBM Costs'!$Q$6:$U$6,_xlfn.XLOOKUP(X136,'BBM Costs'!$P$7:$P$37,'BBM Costs'!$Q$7:$U$37))*_xlfn.XLOOKUP(X136,'Control panel'!$L$7:$L$37,'Control panel'!$M$7:$M$37)","v":-0.66018014511073631},{"$f":"_xlfn.XLOOKUP(W136,'BBM Costs'!$X$6:$AB$6,_xlfn.XLOOKUP(X136,'BBM Costs'!$W$7:$W$37,'BBM Costs'!$X$7:$AB$37))*_xlfn.XLOOKUP(X136,'Control panel'!$S$7:$S$37,'Control panel'!$T$7:$T$37)","v":35.48916346454083},41.239798716522941]
[null,null,null,null,null,null,null,null,null,null,null,null,null,null,null,null,null,null,null,null,null,null,"2029-30",{"$f":"'PTRM Data'!B11","v":"Distribution Equipment"},{"$f":"_xlfn.XLOOKUP(X137,'Control panel'!$L$7:$L$37,'Control panel'!$P$7:$P$37)","v":0.57000000000000006},0.13560689943574067,{"$f":"_xlfn.XLOOKUP(W137,'BBM Costs'!$Q$6:$U$6,_xlfn.XLOOKUP(X137,'BBM Costs'!$P$7:$P$37,'BBM Costs'!$Q$7:$U$37))*_xlfn.XLOOKUP(X137,'Control panel'!$L$7:$L$37,'Control panel'!$M$7:$M$37)","v":0.72702651460564871},{"$f":"_xlfn.XLOOKUP(W137,'BBM Costs'!$X$6:$AB$6,_xlfn.XLOOKUP(X137,'BBM Costs'!$W$7:$W$37,'BBM Costs'!$X$7:$AB$37))*_xlfn.XLOOKUP(X137,'Control panel'!$S$7:$S$37,'Control panel'!$T$7:$T$37)","v":0.91194694788371689},1.7745803619251062]
[null,null,null,null,null,null,null,null,null,null,null,null,null,null,null,null,null,null,null,null,null,null,"2029-30",{"$f":"'PTRM Data'!B12","v":"Substation Bays"},{"$f":"_xlfn.XLOOKUP(X138,'Control panel'!$L$7:$L$37,'Control panel'!$P$7:$P$37)","v":1},{"$f":"SUMPRODUCT(_xlfn.XLOOKUP(W138,$AZ$9:$AZ$13,$BA$9:$BS$13),_xlfn.XLOOKUP(X138,$AE$9:$AE$39,$AF$9:$AX$39))","v":9.8673527764416384},{"$f":"_xlfn.XLOOKUP(W138,'BBM Costs'!$Q$6:$U$6,_xlfn.XLOOKUP(X138,'BBM Costs'!$P$7:$P$37,'BBM Costs'!$Q$7:$U$37))*_xlfn.XLOOKUP(X138,'Control panel'!$L$7:$L$37,'Control panel'!$M$7:$M$37)","v":0},{"$f":"_xlfn.XLOOKUP(W138,'BBM Costs'!$X$6:$AB$6,_xlfn.XLOOKUP(X138,'BBM Costs'!$W$7:$W$37,'BBM Costs'!$X$7:$AB$37))*_xlfn.XLOOKUP(X138,'Control panel'!$S$7:$S$37,'Control panel'!$T$7:$T$37)","v":0},{"$f":"SUM(Z138:AB138)","v":9.8673527764416384}]
[null,null,null,null,null,null,null,null,null,null,null,null,null,null,null,null,null,null,null,null,null,null,"2029-30",{"$f":"'PTRM Data'!B13","v":"Substation Establishment"},{"$f":"_xlfn.XLOOKUP(X139,'Control panel'!$L$7:$L$37,'Control panel'!$P$7:$P$37)","v":1},2.4906859821276628,{"$f":"_xlfn.XLOOKUP(W139,'BBM Costs'!$Q$6:$U$6,_xlfn.XLOOKUP(X139,'BBM Costs'!$P$7:$P$37,'BBM Costs'!$Q$7:$U$37))*_xlfn.XLOOKUP(X139,'Control panel'!$L$7:$L$37,'Control panel'!$M$7:$M$37)","v":0},{"$f":"_xlfn.XLOOKUP(W139,'BBM Costs'!$X$6:$AB$6,_xlfn.XLOOKUP(X139,'BBM Costs'!$W$7:$W$37,'BBM Costs'!$X$7:$AB$37))*_xlfn.XLOOKUP(X139,'Control panel'!$S$7:$S$37,'Control panel'!$T$7:$T$37)","v":0},2.4906859821276628]
[null,null,null,null,null,null,null,null,null,null,null,null,null,null,null,null,null,null,null,null,null,null,"2029-30",{"$f":"'PTRM Data'!B14","v":"Distribution Substation Switchgear"},{"$f":"_xlfn.XLOOKUP(X140,'Control panel'!$L$7:$L$37,'Control panel'!$P$7:$P$37)","v":0.57000000000000006},3.749126701931353,{"$f":"_xlfn.XLOOKUP(W140,'BBM Costs'!$Q$6:$U$6,_xlfn.XLOOKUP(X140,'BBM Costs'!$P$7:$P$37,'BBM Costs'!$Q$7:$U$37))*_xlfn.XLOOKUP(X140,'Control panel'!$L$7:$L$37,'Control panel'!$M$7:$M$37)","v":1.0962145439872211},{"$f":"_xlfn.XLOOKUP(W140,'BBM Costs'!$X$6:$AB$6,_xlfn.XLOOKUP(X140,'BBM Costs'!$W$7:$W$37,'BBM Costs'!$X$7:$AB$37))*_xlfn.XLOOKUP(X140,'Control panel'!$S$7:$S$37,'Control panel'!$T$7:$T$37)","v":24.692408062402933},29.537749308321509]
[null,null,null,null,null,null,null,null,null,null,null,null,null,null,null,null,null,null,null,null,null,null,"2029-30",{"$f":"'PTRM Data'!B15","v":"Zone Transformers"},{"$f":"_xlfn.XLOOKUP(X141,'Control panel'!$L$7:$L$37,'Control panel'!$P$7:$P$37)","v":1},2.0100302716966758,{"$f":"_xlfn.XLOOKUP(W141,'BBM Costs'!$Q$6:$U$6,_xlfn.XLOOKUP(X141,'BBM Costs'!$P$7:$P$37,'BBM Costs'!$Q$7:$U$37))*_xlfn.XLOOKUP(X141,'Control panel'!$L$7:$L$37,'Control panel'!$M$7:$M$37)","v":0},{"$f":"_xlfn.XLOOKUP(W141,'BBM Costs'!$X$6:$AB$6,_xlfn.XLOOKUP(X141,'BBM Costs'!$W$7:$W$37,'BBM Costs'!$X$7:$AB$37))*_xlfn.XLOOKUP(X141,'Control panel'!$S$7:$S$37,'Control panel'!$T$7:$T$37)","v":0},2.0100302716966758]
[null,null,null,null,null,null,null,null,null,null,null,null,null,null,null,null,null,null,null,null,null,null,"2029-30",{"$f":"'PTRM Data'!B16","v":"Distribution Transformers"},{"$f":"_xlfn.XLOOKUP(X142,'Control panel'!$L$7:$L$37,'Control panel'!$P$7:$P$37)","v":0.57000000000000006},9.5869506811697764,{"$f":"_xlfn.XLOOKUP(W142,'BBM Costs'!$Q$6:$U$6,_xlfn.XLOOKUP(X142,'BBM Costs'!$P$7:$P$37,'BBM Costs'!$Q$7:$U$37))*_xlfn.XLOOKUP(X142,'Control panel'!$L$7:$L$37,'Control panel'!$M$7:$M$37)","v":13.044667100535982},{"$f":"_xlfn.XLOOKUP(W142,'BBM Costs'!$X$6:$AB$6,_xlfn.XLOOKUP(X142,'BBM Costs'!$W$7:$W$37,'BBM Costs'!$X$7:$AB$37))*_xlfn.XLOOKUP(X142,'Control panel'!$S$7:$S$37,'Control panel'!$T$7:$T$37)","v":56.723123421853103},79.354741203558859]
[null,null,null,null,null,null,null,null,null,null,null,null,null,null,null,null,null,null,null,null,null,null,"2029-30",{"$f":"'PTRM Data'!B17","v":"Low Voltage Services"},{"$f":"_xlfn.XLOOKUP(X143,'Control panel'!$L$7:$L$37,'Control panel'!$P$7:$P$37)","v":0},3.1260779756331707,{"$f":"_xlfn.XLOOKUP(W143,'BBM Costs'!$Q$6:$U$6,_xlfn.XLOOKUP(X143,'BBM Costs'!$P$7:$P$37,'BBM Costs'!$Q$7:$U$37))*_xlfn.XLOOKUP(X143,'Control panel'!$L$7:$L$37,'Control panel'!$M$7:$M$37)","v":0},{"$f":"_xlfn.XLOOKUP(W143,'BBM Costs'!$X$6:$AB$6,_xlfn.XLOOKUP(X143,'BBM Costs'!$W$7:$W$37,'BBM Costs'!$X$7:$AB$37))*_xlfn.XLOOKUP(X143,'Control panel'!$S$7:$S$37,'Control panel'!$T$7:$T$37)","v":0},3.1260779756331707]
[null,null,null,null,null,null,null,null,null,null,null,null,null,null,null,null,null,null,null,null,null,null,"2029-30",{"$f":"'PTRM Data'!B18","v":"Metering"},{"$f":"_xlfn.XLOOKUP(X144,'Control panel'!$L$7:$L$37,'Control panel'!$P$7:$P$37)","v":1},0,{"$f":"_xlfn.XLOOKUP(W144,'BBM Costs'!$Q$6:$U$6,_xlfn.XLOOKUP(X144,'BBM Costs'!$P$7:$P$37,'BBM Costs'!$Q$7:$U$37))*_xlfn.XLOOKUP(X144,'Control panel'!$L$7:$L$37,'Control panel'!$M$7:$M$37)","v":0},{"$f":"_xlfn.XLOOKUP(W144,'BBM Costs'!$X$6:$AB$6,_xlfn.XLOOKUP(X144,'BBM Costs'!$W$7:$W$37,'BBM Costs'!$X$7:$AB$37))*_xlfn.XLOOKUP(X144,'Control panel'!$S$7:$S$37,'Control panel'!$T$7:$T$37)","v":0},0]
[null,null,null,null,null,null,null,null,null,null,null,null,null,null,null,null,null,null,null,null,null,null,"2029-30",{"$f":"'PTRM Data'!B19","v":"Communications – Pilot Wires"},{"$f":"_xlfn.XLOOKUP(X145,'Control panel'!$L$7:$L$37,'Control panel'!$P$7:$P$37)","v":0},1.1019660899482187,{"$f":"_xlfn.XLOOKUP(W145,'BBM Costs'!$Q$6:$U$6,_xlfn.XLOOKUP(X145,'BBM Costs'!$P$7:$P$37,'BBM Costs'!$Q$7:$U$37))*_xlfn.XLOOKUP(X145,'Control panel'!$L$7:$L$37,'Control panel'!$M$7:$M$37)","v":0},{"$f":"_xlfn.XLOOKUP(W145,'BBM Costs'!$X$6:$AB$6,_xlfn.XLOOKUP(X145,'BBM Costs'!$W$7:$W$37,'BBM Costs'!$X$7:$AB$37))*_xlfn.XLOOKUP(X145,'Control panel'!$S$7:$S$37,'Control panel'!$T$7:$T$37)","v":0},1.1019660899482187]
[]
[null,null,null,null,null,null,null,null,null,null,null,null,null,null,null,null,null,null,null,null,null,null,"2029-30",{"$f":"'PTRM Data'!B21","v":"Land & Easements (System) - combined"},{"$f":"_xlfn.XLOOKUP(X147,'Control panel'!$L$7:$L$37,'Control panel'!$P$7:$P$37)","v":1},0.315245219636618,{"$f":"_xlfn.XLOOKUP(W147,'BBM Costs'!$Q$6:$U$6,_xlfn.XLOOKUP(X147,'BBM Costs'!$P$7:$P$37,'BBM Costs'!$Q$7:$U$37))*_xlfn.XLOOKUP(X147,'Control panel'!$L$7:$L$37,'Control panel'!$M$7:$M$37)","v":0},{"$f":"_xlfn.XLOOKUP(W147,'BBM Costs'!$X$6:$AB$6,_xlfn.XLOOKUP(X147,'BBM Costs'!$W$7:$W$37,'BBM Costs'!$X$7:$AB$37))*_xlfn.XLOOKUP(X147,'Control panel'!$S$7:$S$37,'Control panel'!$T$7:$T$37)","v":0},0.315245219636618]
[null,null,null,null,null,null,null,null,null,null,null,null,null,null,null,null,null,null,null,null,null,null,"2029-30",{"$f":"'PTRM Data'!B22","v":"Land Improvements"},{"$f":"_xlfn.XLOOKUP(X148,'Control panel'!$L$7:$L$37,'Control panel'!$P$7:$P$37)","v":1},0,{"$f":"_xlfn.XLOOKUP(W148,'BBM Costs'!$Q$6:$U$6,_xlfn.XLOOKUP(X148,'BBM Costs'!$P$7:$P$37,'BBM Costs'!$Q$7:$U$37))*_xlfn.XLOOKUP(X148,'Control panel'!$L$7:$L$37,'Control panel'!$M$7:$M$37)","v":0},{"$f":"_xlfn.XLOOKUP(W148,'BBM Costs'!$X$6:$AB$6,_xlfn.XLOOKUP(X148,'BBM Costs'!$W$7:$W$37,'BBM Costs'!$X$7:$AB$37))*_xlfn.XLOOKUP(X148,'Control panel'!$S$7:$S$37,'Control panel'!$T$7:$T$37)","v":0},0]
[null,null,null,null,null,null,null,null,null,null,null,null,null,null,null,null,null,null,null,null,null,null,"2029-30",{"$f":"'PTRM Data'!B23","v":"Control Centre - SCADA"},{"$f":"_xlfn.XLOOKUP(X149,'Control panel'!$L$7:$L$37,'Control panel'!$P$7:$P$37)","v":1},0.12420959189164245,{"$f":"_xlfn.XLOOKUP(W149,'BBM Costs'!$Q$6:$U$6,_xlfn.XLOOKUP(X149,'BBM Costs'!$P$7:$P$37,'BBM Costs'!$Q$7:$U$37))*_xlfn.XLOOKUP(X149,'Control panel'!$L$7:$L$37,'Control panel'!$M$7:$M$37)","v":0},{"$f":"_xlfn.XLOOKUP(W149,'BBM Costs'!$X$6:$AB$6,_xlfn.XLOOKUP(X149,'BBM Costs'!$W$7:$W$37,'BBM Costs'!$X$7:$AB$37))*_xlfn.XLOOKUP(X149,'Control panel'!$S$7:$S$37,'Control panel'!$T$7:$T$37)","v":0},0.12420959189164245]
[null,null,null,null,null,null,null,null,null,null,null,null,null,null,null,null,null,null,null,null,null,null,"2029-30",{"$f":"'PTRM Data'!B24","v":"Other Equipment"},{"$f":"_xlfn.XLOOKUP(X150,'Control panel'!$L$7:$L$37,'Control panel'!$P$7:$P$37)","v":1},9.2012815102099563E-3,{"$f":"_xlfn.XLOOKUP(W150,'BBM Costs'!$Q$6:$U$6,_xlfn.XLOOKUP(X150,'BBM Costs'!$P$7:$P$37,'BBM Costs'!$Q$7:$U$37))*_xlfn.XLOOKUP(X150,'Control panel'!$L$7:$L$37,'Control panel'!$M$7:$M$37)","v":0},{"$f":"_xlfn.XLOOKUP(W150,'BBM Costs'!$X$6:$AB$6,_xlfn.XLOOKUP(X150,'BBM Costs'!$W$7:$W$37,'BBM Costs'!$X$7:$AB$37))*_xlfn.XLOOKUP(X150,'Control panel'!$S$7:$S$37,'Control panel'!$T$7:$T$37)","v":0},9.2012815102099563E-3]
[null,null,null,null,null,null,null,null,null,null,null,null,null,null,null,null,null,null,null,null,null,null,"2029-30",{"$f":"'PTRM Data'!B25","v":"Generation Assets"},{"$f":"_xlfn.XLOOKUP(X151,'Control panel'!$L$7:$L$37,'Control panel'!$P$7:$P$37)","v":1},0.11604185471336831,{"$f":"_xlfn.XLOOKUP(W151,'BBM Costs'!$Q$6:$U$6,_xlfn.XLOOKUP(X151,'BBM Costs'!$P$7:$P$37,'BBM Costs'!$Q$7:$U$37))*_xlfn.XLOOKUP(X151,'Control panel'!$L$7:$L$37,'Control panel'!$M$7:$M$37)","v":0},{"$f":"_xlfn.XLOOKUP(W151,'BBM Costs'!$X$6:$AB$6,_xlfn.XLOOKUP(X151,'BBM Costs'!$W$7:$W$37,'BBM Costs'!$X$7:$AB$37))*_xlfn.XLOOKUP(X151,'Control panel'!$S$7:$S$37,'Control panel'!$T$7:$T$37)","v":0},0.11604185471336831]
[null,null,null,null,null,null,null,null,null,null,null,null,null,null,null,null,null,null,null,null,null,null,"2029-30",{"$f":"'PTRM Data'!B26","v":"Motor Vehicles"},{"$f":"_xlfn.XLOOKUP(X152,'Control panel'!$L$7:$L$37,'Control panel'!$P$7:$P$37)","v":1},0,{"$f":"_xlfn.XLOOKUP(W152,'BBM Costs'!$Q$6:$U$6,_xlfn.XLOOKUP(X152,'BBM Costs'!$P$7:$P$37,'BBM Costs'!$Q$7:$U$37))*_xlfn.XLOOKUP(X152,'Control panel'!$L$7:$L$37,'Control panel'!$M$7:$M$37)","v":0},{"$f":"_xlfn.XLOOKUP(W152,'BBM Costs'!$X$6:$AB$6,_xlfn.XLOOKUP(X152,'BBM Costs'!$W$7:$W$37,'BBM Costs'!$X$7:$AB$37))*_xlfn.XLOOKUP(X152,'Control panel'!$S$7:$S$37,'Control panel'!$T$7:$T$37)","v":0},0]
[null,null,null,null,null,null,null,null,null,null,null,null,null,null,null,null,null,null,null,null,null,null,"2029-30",{"$f":"'PTRM Data'!B27","v":"Plant & Equipment"},{"$f":"_xlfn.XLOOKUP(X153,'Control panel'!$L$7:$L$37,'Control panel'!$P$7:$P$37)","v":1},0,{"$f":"_xlfn.XLOOKUP(W153,'BBM Costs'!$Q$6:$U$6,_xlfn.XLOOKUP(X153,'BBM Costs'!$P$7:$P$37,'BBM Costs'!$Q$7:$U$37))*_xlfn.XLOOKUP(X153,'Control panel'!$L$7:$L$37,'Control panel'!$M$7:$M$37)","v":0},{"$f":"_xlfn.XLOOKUP(W153,'BBM Costs'!$X$6:$AB$6,_xlfn.XLOOKUP(X153,'BBM Costs'!$W$7:$W$37,'BBM Costs'!$X$7:$AB$37))*_xlfn.XLOOKUP(X153,'Control panel'!$S$7:$S$37,'Control panel'!$T$7:$T$37)","v":0},0]
[null,null,null,null,null,null,null,null,null,null,null,null,null,null,null,null,null,null,null,null,null,null,"2029-30",{"$f":"'PTRM Data'!B28","v":"Buildings"},{"$f":"_xlfn.XLOOKUP(X154,'Control panel'!$L$7:$L$37,'Control panel'!$P$7:$P$37)","v":1},0,{"$f":"_xlfn.XLOOKUP(W154,'BBM Costs'!$Q$6:$U$6,_xlfn.XLOOKUP(X154,'BBM Costs'!$P$7:$P$37,'BBM Costs'!$Q$7:$U$37))*_xlfn.XLOOKUP(X154,'Control panel'!$L$7:$L$37,'Control panel'!$M$7:$M$37)","v":0},{"$f":"_xlfn.XLOOKUP(W154,'BBM Costs'!$X$6:$AB$6,_xlfn.XLOOKUP(X154,'BBM Costs'!$W$7:$W$37,'BBM Costs'!$X$7:$AB$37))*_xlfn.XLOOKUP(X154,'Control panel'!$S$7:$S$37,'Control panel'!$T$7:$T$37)","v":0},0]
[null,null,null,null,null,null,null,null,null,null,null,null,null,null,null,null,null,null,null,null,null,null,"2029-30",{"$f":"'PTRM Data'!B29","v":"Office Equipment & Furniture"},{"$f":"_xlfn.XLOOKUP(X155,'Control panel'!$L$7:$L$37,'Control panel'!$P$7:$P$37)","v":1},-1.9179729068483829E-2,{"$f":"_xlfn.XLOOKUP(W155,'BBM Costs'!$Q$6:$U$6,_xlfn.XLOOKUP(X155,'BBM Costs'!$P$7:$P$37,'BBM Costs'!$Q$7:$U$37))*_xlfn.XLOOKUP(X155,'Control panel'!$L$7:$L$37,'Control panel'!$M$7:$M$37)","v":0},{"$f":"_xlfn.XLOOKUP(W155,'BBM Costs'!$X$6:$AB$6,_xlfn.XLOOKUP(X155,'BBM Costs'!$W$7:$W$37,'BBM Costs'!$X$7:$AB$37))*_xlfn.XLOOKUP(X155,'Control panel'!$S$7:$S$37,'Control panel'!$T$7:$T$37)","v":0},-1.9179729068483829E-2]
[null,null,null,null,null,null,null,null,null,null,null,null,null,null,null,null,null,null,null,null,null,null,"2029-30",{"$f":"'PTRM Data'!B30","v":"Initial Leases (10 yr life)"},{"$f":"_xlfn.XLOOKUP(X156,'Control panel'!$L$7:$L$37,'Control panel'!$P$7:$P$37)","v":1},0,{"$f":"_xlfn.XLOOKUP(W156,'BBM Costs'!$Q$6:$U$6,_xlfn.XLOOKUP(X156,'BBM Costs'!$P$7:$P$37,'BBM Costs'!$Q$7:$U$37))*_xlfn.XLOOKUP(X156,'Control panel'!$L$7:$L$37,'Control panel'!$M$7:$M$37)","v":0},{"$f":"_xlfn.XLOOKUP(W156,'BBM Costs'!$X$6:$AB$6,_xlfn.XLOOKUP(X156,'BBM Costs'!$W$7:$W$37,'BBM Costs'!$X$7:$AB$37))*_xlfn.XLOOKUP(X156,'Control panel'!$S$7:$S$37,'Control panel'!$T$7:$T$37)","v":0},0]
[null,null,null,null,null,null,null,null,null,null,null,null,null,null,null,null,null,null,null,null,null,null,"2029-30",{"$f":"'PTRM Data'!B31","v":"Lease Extensions (5yr Life)"},{"$f":"_xlfn.XLOOKUP(X157,'Control panel'!$L$7:$L$37,'Control panel'!$P$7:$P$37)","v":1},0,{"$f":"_xlfn.XLOOKUP(W157,'BBM Costs'!$Q$6:$U$6,_xlfn.XLOOKUP(X157,'BBM Costs'!$P$7:$P$37,'BBM Costs'!$Q$7:$U$37))*_xlfn.XLOOKUP(X157,'Control panel'!$L$7:$L$37,'Control panel'!$M$7:$M$37)","v":0},{"$f":"_xlfn.XLOOKUP(W157,'BBM Costs'!$X$6:$AB$6,_xlfn.XLOOKUP(X157,'BBM Costs'!$W$7:$W$37,'BBM Costs'!$X$7:$AB$37))*_xlfn.XLOOKUP(X157,'Control panel'!$S$7:$S$37,'Control panel'!$T$7:$T$37)","v":0},0]
[null,null,null,null,null,null,null,null,null,null,null,null,null,null,null,null,null,null,null,null,null,null,"2029-30",{"$f":"'PTRM Data'!B32","v":"Land & Easements - combined"},{"$f":"_xlfn.XLOOKUP(X158,'Control panel'!$L$7:$L$37,'Control panel'!$P$7:$P$37)","v":1},0,{"$f":"_xlfn.XLOOKUP(W158,'BBM Costs'!$Q$6:$U$6,_xlfn.XLOOKUP(X158,'BBM Costs'!$P$7:$P$37,'BBM Costs'!$Q$7:$U$37))*_xlfn.XLOOKUP(X158,'Control panel'!$L$7:$L$37,'Control panel'!$M$7:$M$37)","v":0},{"$f":"_xlfn.XLOOKUP(W158,'BBM Costs'!$X$6:$AB$6,_xlfn.XLOOKUP(X158,'BBM Costs'!$W$7:$W$37,'BBM Costs'!$X$7:$AB$37))*_xlfn.XLOOKUP(X158,'Control panel'!$S$7:$S$37,'Control panel'!$T$7:$T$37)","v":0},0]
[null,null,null,null,null,null,null,null,null,null,null,null,null,null,null,null,null,null,null,null,null,null,"2029-30",{"$f":"'PTRM Data'!B33","v":"Communications"},{"$f":"_xlfn.XLOOKUP(X159,'Control panel'!$L$7:$L$37,'Control panel'!$P$7:$P$37)","v":1},0,{"$f":"_xlfn.XLOOKUP(W159,'BBM Costs'!$Q$6:$U$6,_xlfn.XLOOKUP(X159,'BBM Costs'!$P$7:$P$37,'BBM Costs'!$Q$7:$U$37))*_xlfn.XLOOKUP(X159,'Control panel'!$L$7:$L$37,'Control panel'!$M$7:$M$37)","v":0},{"$f":"_xlfn.XLOOKUP(W159,'BBM Costs'!$X$6:$AB$6,_xlfn.XLOOKUP(X159,'BBM Costs'!$W$7:$W$37,'BBM Costs'!$X$7:$AB$37))*_xlfn.XLOOKUP(X159,'Control panel'!$S$7:$S$37,'Control panel'!$T$7:$T$37)","v":0},0]
[null,null,null,null,null,null,null,null,null,null,null,null,null,null,null,null,null,null,null,null,null,null,"2029-30",{"$f":"'PTRM Data'!B34","v":"In-house software"},{"$f":"_xlfn.XLOOKUP(X160,'Control panel'!$L$7:$L$37,'Control panel'!$P$7:$P$37)","v":1},0,{"$f":"_xlfn.XLOOKUP(W160,'BBM Costs'!$Q$6:$U$6,_xlfn.XLOOKUP(X160,'BBM Costs'!$P$7:$P$37,'BBM Costs'!$Q$7:$U$37))*_xlfn.XLOOKUP(X160,'Control panel'!$L$7:$L$37,'Control panel'!$M$7:$M$37)","v":0},{"$f":"_xlfn.XLOOKUP(W160,'BBM Costs'!$X$6:$AB$6,_xlfn.XLOOKUP(X160,'BBM Costs'!$W$7:$W$37,'BBM Costs'!$X$7:$AB$37))*_xlfn.XLOOKUP(X160,'Control panel'!$S$7:$S$37,'Control panel'!$T$7:$T$37)","v":0},0]
[null,null,null,null,null,null,null,null,null,null,null,null,null,null,null,null,null,null,null,null,null,null,"2029-30",{"$f":"'PTRM Data'!B35","v":"IT Systems"},{"$f":"_xlfn.XLOOKUP(X161,'Control panel'!$L$7:$L$37,'Control panel'!$P$7:$P$37)","v":1},0,{"$f":"_xlfn.XLOOKUP(W161,'BBM Costs'!$Q$6:$U$6,_xlfn.XLOOKUP(X161,'BBM Costs'!$P$7:$P$37,'BBM Costs'!$Q$7:$U$37))*_xlfn.XLOOKUP(X161,'Control panel'!$L$7:$L$37,'Control panel'!$M$7:$M$37)","v":0},{"$f":"_xlfn.XLOOKUP(W161,'BBM Costs'!$X$6:$AB$6,_xlfn.XLOOKUP(X161,'BBM Costs'!$W$7:$W$37,'BBM Costs'!$X$7:$AB$37))*_xlfn.XLOOKUP(X161,'Control panel'!$S$7:$S$37,'Control panel'!$T$7:$T$37)","v":0},0]
[null,null,null,null,null,null,null,null,null,null,null,null,null,null,null,null,null,null,null,null,null,null,"2029-30",{"$f":"'PTRM Data'!B36","v":"Legacy ICT Assets"},{"$f":"_xlfn.XLOOKUP(X162,'Control panel'!$L$7:$L$37,'Control panel'!$P$7:$P$37)","v":1},0,{"$f":"_xlfn.XLOOKUP(W162,'BBM Costs'!$Q$6:$U$6,_xlfn.XLOOKUP(X162,'BBM Costs'!$P$7:$P$37,'BBM Costs'!$Q$7:$U$37))*_xlfn.XLOOKUP(X162,'Control panel'!$L$7:$L$37,'Control panel'!$M$7:$M$37)","v":0},{"$f":"_xlfn.XLOOKUP(W162,'BBM Costs'!$X$6:$AB$6,_xlfn.XLOOKUP(X162,'BBM Costs'!$W$7:$W$37,'BBM Costs'!$X$7:$AB$37))*_xlfn.XLOOKUP(X162,'Control panel'!$S$7:$S$37,'Control panel'!$T$7:$T$37)","v":0},0]
[null,null,null,null,null,null,null,null,null,null,null,null,null,null,null,null,null,null,null,null,null,null,"2029-30",{"$f":"'PTRM Data'!B37","v":"Buildings - capital works"},{"$f":"_xlfn.XLOOKUP(X163,'Control panel'!$L$7:$L$37,'Control panel'!$P$7:$P$37)","v":1},0,{"$f":"_xlfn.XLOOKUP(W163,'BBM Costs'!$Q$6:$U$6,_xlfn.XLOOKUP(X163,'BBM Costs'!$P$7:$P$37,'BBM Costs'!$Q$7:$U$37))*_xlfn.XLOOKUP(X163,'Control panel'!$L$7:$L$37,'Control panel'!$M$7:$M$37)","v":0},{"$f":"_xlfn.XLOOKUP(W163,'BBM Costs'!$X$6:$AB$6,_xlfn.XLOOKUP(X163,'BBM Costs'!$W$7:$W$37,'BBM Costs'!$X$7:$AB$37))*_xlfn.XLOOKUP(X163,'Control panel'!$S$7:$S$37,'Control panel'!$T$7:$T$37)","v":0},0]

{"sheet":"PTRM Revenue data","index":4,"n_rows":24,"n_cols":21,"rows_kept":24,"cut":false,"hidden":false,"merged":[]}
[]
[null,"PTRM Revenue Data"]
[]
[null,"Building Block Components",null,null,null,null,null,null,"Forecast inflation",null,null,null,null,null,null,"Other PTRM Components "]
[]
[null,"Asset class","2025-26","2026-27","2027-28","2028-29","2029-30",null,"Asset class","2025-26","2026-27","2027-28","2028-29","2029-30",null,"Asset class","2025-26","2026-27","2027-28","2028-29","2029-30"]
[null,"Return on Capital",{"$f":"C17*C$24","v":955.44060250252642},{"$f":"D17*D$24","v":1044.8628085046209},1139.825304898493,1197.9900697392854,1302.480765624442,null,"Forecast inflation ",{"$f":"'X-factors'!G10","v":2.7997811278454687E-2},{"$f":"'X-factors'!H10","v":2.7997811278454687E-2},{"$f":"'X-factors'!I10","v":2.7997811278454687E-2},{"$f":"'X-factors'!J10","v":2.7997811278454687E-2},{"$f":"'X-factors'!K10","v":2.7997811278454687E-2},null,"EBSS",{"$f":"'PTRM Input'!G345","v":-44.029644778249462},{"$f":"'PTRM Input'!H345","v":-57.617984921399056},{"$f":"'PTRM Input'!I345","v":-62.216699950806287},{"$f":"'PTRM Input'!J345","v":-15.205959296761023},{"$f":"'PTRM Input'!K345","v":0}]
[null,"Return of Capital (regulatory depreciation)",{"$f":"C18*C$24","v":213.77393355637935},236.24859776251324,256.90849518120496,275.86752720601993,285.74781858346029,null,"Inflation index",{"$f":"1+J7","v":1.0279978112784547},{"$f":"1+K7","v":1.0279978112784547},1.0279978112784547,1.0279978112784547,1.0279978112784547,null,"CESS",{"$f":"'PTRM Input'!G346","v":-125.15898482210655},{"$f":"'PTRM Input'!H346","v":-125.15898482210655},{"$f":"'PTRM Input'!I346","v":-125.15898482210655},{"$f":"'PTRM Input'!J346","v":-125.15898482210655},{"$f":"'PTRM Input'!K346","v":-125.15898482210655}]
[null,"Operating Expenditure",{"$f":"C19*C$24","v":470.52155999180854},498.91320065039031,526.72354875899441,532.1921315718364,557.34373022405759,null,null,null,null,null,null,null,null,"Control period carryover",{"$f":"'PTRM Input'!G347","v":0},{"$f":"'PTRM Input'!H347","v":0},{"$f":"'PTRM Input'!I347","v":0},{"$f":"'PTRM Input'!J347","v":0},{"$f":"'PTRM Input'!K347","v":0}]
[null,"Revenue Adjustments",{"$f":"C20*C$24","v":-185.4584769322646},-209.81967496929849,-225.26515208240286,-174.40061532578881,-164.00960027915863,null,null,null,null,null,null,null,null,"Shared asset decrements",{"$f":"'PTRM Input'!G348","v":0},{"$f":"'PTRM Input'!H348","v":0},{"$f":"'PTRM Input'!I348","v":0},{"$f":"'PTRM Input'!J348","v":0},{"$f":"'PTRM Input'!K348","v":0}]
[null,"Net Tax Allowance",{"$f":"C21*C$24","v":13.20445426431025},14.08020001774193,12.192839554649305,14.872648207853324,11.931465774630908,null,null,null,null,null,null,null,null,"DMIA",{"$f":"'PTRM Input'!G349","v":1.5018600354790221},{"$f":"'PTRM Input'!H349","v":1.5358548313327987},{"$f":"'PTRM Input'!I349","v":1.5752013236134523},{"$f":"'PTRM Input'!J349","v":1.6197081906782154},{"$f":"'PTRM Input'!K349","v":1.6552569816884413}]
[null,"Total vaildation",{"$f":"SUM(C7:C11)","v":1467.4820733827598},{"$f":"SUM(D7:D11)","v":1584.285131965968},1710.3850363109386,1846.5217613992063,1993.4941799274322]
[]
[null,"Unsmoothed building block components"]
[]
[null,"Asset class","2025-26","2026-27","2027-28","2028-29","2029-30"]
[null,"Return on Capital",{"$f":"'X-factors'!G30","v":981.86560793510171},{"$f":"'X-factors'!H30","v":1046.994649814947},{"$f":"'X-factors'!I30","v":1118.6861657195491},{"$f":"'X-factors'!J30","v":1200.2311286693157},{"$f":"'X-factors'!K30","v":1287.4809859713873}]
[null,"Return of Capital (regulatory depreciation)",{"$f":"'X-factors'!G31","v":219.68636530857231},{"$f":"'X-factors'!H31","v":236.73061752254046},{"$f":"'X-factors'!I31","v":252.14388396179339},{"$f":"'X-factors'!J31","v":276.38358773186803},{"$f":"'X-factors'!K31","v":282.457056502196}]
[null,"Operating Expenditure",{"$f":"'X-factors'!G32","v":483.5349642226534},{"$f":"'X-factors'!H32","v":499.93113694093142},{"$f":"'X-factors'!I32","v":516.95496197802697},{"$f":"'X-factors'!J32","v":533.18769402187445},{"$f":"'X-factors'!K32","v":550.92518388923747}]
[null,"Revenue Adjustments",{"$f":"'X-factors'!G33","v":-190.58777669994876},{"$f":"'X-factors'!H33","v":-210.24777160282585},{"$f":"'X-factors'!I33","v":-221.08739661270835},{"$f":"'X-factors'!J33","v":-174.72686348614602},{"$f":"'X-factors'!K33","v":-162.12081394917891}]
[null,"Net Tax Allowance",{"$f":"'X-factors'!G34","v":13.569655172409263},{"$f":"'X-factors'!H34","v":14.108927953898867},{"$f":"'X-factors'!I34","v":11.966711803997885},{"$f":"'X-factors'!J34","v":14.900470208987826},{"$f":"'X-factors'!K34","v":11.794059248345949}]
[null,"Total unsmoothed",{"$f":"SUM(C17:C21)","v":1508.0688159387878},{"$f":"SUM(D17:D21)","v":1587.517560629492},1678.6643268506591,1849.9760171459,1970.5364716619877]
[null,"Total smoothed",{"$f":"'X-factors'!G60","v":1467.4820733827598},{"$f":"'X-factors'!H60","v":1584.2851319659678},{"$f":"'X-factors'!I60","v":1710.3850363109391},{"$f":"'X-factors'!J60","v":1846.5217613992061},{"$f":"'X-factors'!K60","v":1993.4941799274322}]
[null,"Percentage difference",{"$f":"C23/C22","v":0.97308694263347506},{"$f":"D23/D22","v":0.99796384698746743},1.018896398138031,0.99813281052582348,1.0116504863500859]

{"sheet":"PTRM Data","index":5,"n_rows":40,"n_cols":52,"rows_kept":40,"cut":false,"hidden":false,"merged":[]}
[]
[null,"PTRM Data"]
[]
[null,"Opening RAB",null,null,"Capital expenditure ",null,null,null,null,null,null,"Depreciation",null,null,null,null,null,null,"ORAB",null,null,null,null,null,null,"ORAB Split",null,null,null,null,null,null,"Indexation split",null,null,null,null,null,null,"Depreciation split",null,null,null,null,null,null,"Regulatory depreciation Split ($m, nominal)"]
[]
[null,"Asset class","RAB 2025-2026",null,"Asset class","2025-26","2026-27","2027-28","2028-29","2029-30",null,"Asset class","2025-26","2026-27","2027-28","2028-29","2029-30",null,"Asset class","2025-26","2026-27","2027-28","2028-29","2029-30",null,"Asset class","2025-26","2026-27","2027-28","2028-29","2029-30",null,"Asset class","2025-26","2026-27","2027-28","2028-29","2029-30",null,"Asset class","2025-26","2026-27","2027-28","2028-29","2029-30",null,"Asset class","2025-26","2026-27","2027-28","2028-29","2029-30"]
[null,"Overhead Sub-Transmission Lines",{"$f":"_xlfn.XLOOKUP(B7,'PTRM Input'!$G$6:$G$58,'PTRM Input'!$J$6:$J$58)","v":1558.9719826140117},null,{"$f":"B7","v":"Overhead Sub-Transmission Lines"},{"$f":"_xlfn.XLOOKUP($E7,Assets!$C$11:$C$60,Assets!G$11:G$60)","v":79.526585315955742},{"$f":"_xlfn.XLOOKUP($E7,Assets!$C$11:$C$60,Assets!H$11:H$60)","v":81.708132499088265},{"$f":"_xlfn.XLOOKUP($E7,Assets!$C$11:$C$60,Assets!I$11:I$60)","v":84.562368388285108},{"$f":"_xlfn.XLOOKUP($E7,Assets!$C$11:$C$60,Assets!J$11:J$60)","v":86.965759656387974},{"$f":"_xlfn.XLOOKUP($E7,Assets!$C$11:$C$60,Assets!K$11:K$60)","v":90.617103970791817},null,{"$f":"B7","v":"Overhead Sub-Transmission Lines"},{"$f":"_xlfn.XLOOKUP($L7,Assets!$C$128:$C$765,Assets!G$128:G$765)","v":55.506655259435689},{"$f":"_xlfn.XLOOKUP($L7,Assets!$C$128:$C$765,Assets!H$128:H$765)","v":56.95259317427125},{"$f":"_xlfn.XLOOKUP($L7,Assets!$C$128:$C$765,Assets!I$128:I$765)","v":58.438195583345582},{"$f":"_xlfn.XLOOKUP($L7,Assets!$C$128:$C$765,Assets!J$128:J$765)","v":59.975693190405309},{"$f":"_xlfn.XLOOKUP($L7,Assets!$C$128:$C$765,Assets!K$128:K$765)","v":61.556888820521451},null,{"$f":"B7","v":"Overhead Sub-Transmission Lines"},{"$f":"_xlfn.XLOOKUP(S7,$B$7:$B$37,C$7:C$37)","v":1558.9719826140117},{"$f":"T7+F7-M7","v":1582.9919126705317},{"$f":"U7+G7-N7","v":1607.7474519953487},1633.8716248002884,{"$f":"W7+I7-P7","v":1660.861691266271},null,{"$f":"B7","v":"Overhead Sub-Transmission Lines"},{"$f":"T7/T$40","v":9.598162752961141E-2},{"$f":"U7/U$40","v":9.4696353648413223E-2},{"$f":"V7/V$40","v":9.3637758170519739E-2},{"$f":"W7/W$40","v":9.2783343490991571E-2},{"$f":"X7/X$40","v":9.198429390212623E-2},null,{"$f":"B7","v":"Overhead Sub-Transmission Lines"},{"$f":"T7*'PTRM Revenue data'!J$7","v":43.647803357625442},{"$f":"U7*'PTRM Revenue data'!K$7*'PTRM Revenue data'!J$8","v":45.561180468590301},{"$f":"V7*'PTRM Revenue data'!L$7*'PTRM Revenue data'!K$8","v":46.273686695405125},{"$f":"W7*'PTRM Revenue data'!M$7*'PTRM Revenue data'!L$8","v":47.025584505009547},{"$f":"X7*'PTRM Revenue data'!N$7*'PTRM Revenue data'!M$8","v":47.802404196426274},null,{"$f":"B7","v":"Overhead Sub-Transmission Lines"},{"$f":"M7*'PTRM Revenue data'!J$8","v":57.060720118087616},{"$f":"N7*'PTRM Revenue data'!K$8","v":58.5471411297831},{"$f":"O7*'PTRM Revenue data'!L$8","v":60.074337154741514},{"$f":"P7*'PTRM Revenue data'!M$8","v":61.654881329644773},{"$f":"Q7*'PTRM Revenue data'!N$8","v":63.280346976607227},null,{"$f":"B7","v":"Overhead Sub-Transmission Lines"},{"$f":"AO7-AH7","v":13.412916760462174},{"$f":"AP7-AI7","v":12.985960661192799},13.800650459336389,14.629296824635226,15.477942780180953]
[null,"Underground Sub-Transmission Cables",{"$f":"_xlfn.XLOOKUP(B8,'PTRM Input'!$G$6:$G$58,'PTRM Input'!$J$6:$J$58)","v":68.738289722444975},null,{"$f":"B8","v":"Underground Sub-Transmission Cables"},{"$f":"_xlfn.XLOOKUP($E8,Assets!$C$11:$C$60,Assets!G$11:G$60)","v":4.8198062797376853},{"$f":"_xlfn.XLOOKUP($E8,Assets!$C$11:$C$60,Assets!H$11:H$60)","v":4.9944962103241419},{"$f":"_xlfn.XLOOKUP($E8,Assets!$C$11:$C$60,Assets!I$11:I$60)","v":5.162823595679928},{"$f":"_xlfn.XLOOKUP($E8,Assets!$C$11:$C$60,Assets!J$11:J$60)","v":5.2741572875934866},{"$f":"_xlfn.XLOOKUP($E8,Assets!$C$11:$C$60,Assets!K$11:K$60)","v":5.4808673833340382},null,{"$f":"B8","v":"Underground Sub-Transmission Cables"},{"$f":"_xlfn.XLOOKUP($L8,Assets!$C$128:$C$765,Assets!G$128:G$765)","v":2.6920337654670918},{"$f":"_xlfn.XLOOKUP($L8,Assets!$C$128:$C$765,Assets!H$128:H$765)","v":2.799140571683485},{"$f":"_xlfn.XLOOKUP($L8,Assets!$C$128:$C$765,Assets!I$128:I$765)","v":2.9101293763573546},{"$f":"_xlfn.XLOOKUP($L8,Assets!$C$128:$C$765,Assets!J$128:J$765)","v":3.0248587895946861},{"$f":"_xlfn.XLOOKUP($L8,Assets!$C$128:$C$765,Assets!K$128:K$765)","v":3.1420622848745414},null,{"$f":"B8","v":"Underground Sub-Transmission Cables"},68.738289722444975,{"$f":"T8+F8-M8","v":70.866062236715578},73.061417875356241,75.314112094678805,{"$f":"W8+I8-P8","v":77.563410592677599},null,{"$f":"B8","v":"Underground Sub-Transmission Cables"},4.2320278970630759E-3,4.2392874136149743E-3,4.255212701545422E-3,4.2768936225658317E-3,4.2957313023269184E-3,null,{"$f":"B8","v":"Underground Sub-Transmission Cables"},{"$f":"T8*'PTRM Revenue data'!J$7","v":1.9245216632527558},{"$f":"U8*'PTRM Revenue data'!K$7*'PTRM Revenue data'!J$8","v":2.0396449437435304},{"$f":"V8*'PTRM Revenue data'!L$7*'PTRM Revenue data'!K$8","v":2.1028309863532519},{"$f":"W8*'PTRM Revenue data'!M$7*'PTRM Revenue data'!L$8","v":2.1676673301435105},{"$f":"X8*'PTRM Revenue data'!N$7*'PTRM Revenue data'!M$8","v":2.2324059393396656},null,{"$f":"B8","v":"Underground Sub-Transmission Cables"},{"$f":"M8*'PTRM Revenue data'!J$8","v":2.7674048187878673},{"$f":"N8*'PTRM Revenue data'!K$8","v":2.8775103811513447},{"$f":"O8*'PTRM Revenue data'!L$8","v":2.991606629432495},{"$f":"P8*'PTRM Revenue data'!M$8","v":3.1095482151297329},{"$f":"Q8*'PTRM Revenue data'!N$8","v":3.2300331517516088},null,{"$f":"B8","v":"Underground Sub-Transmission Cables"},{"$f":"AO8-AH8","v":0.84288315553511151},{"$f":"AP8-AI8","v":0.83786543740781427},{"$f":"AQ8-AJ8","v":0.88877564307924306},{"$f":"AR8-AK8","v":0.94188088498622236},{"$f":"AS8-AL8","v":0.99762721241194319}]
[null,"Overhead Distribution Lines",{"$f":"_xlfn.XLOOKUP(B9,'PTRM Input'!$G$6:$G$58,'PTRM Input'!$J$6:$J$58)","v":6391.7590742637421},null,"Overhead Distribution Lines",{"$f":"_xlfn.XLOOKUP($E9,Assets!$C$11:$C$60,Assets!G$11:G$60)","v":462.42461135856331},{"$f":"_xlfn.XLOOKUP($E9,Assets!$C$11:$C$60,Assets!H$11:H$60)","v":472.76387585147864},{"$f":"_xlfn.XLOOKUP($E9,Assets!$C$11:$C$60,Assets!I$11:I$60)","v":489.61765521673374},{"$f":"_xlfn.XLOOKUP($E9,Assets!$C$11:$C$60,Assets!J$11:J$60)","v":505.48851924179564},{"$f":"_xlfn.XLOOKUP($E9,Assets!$C$11:$C$60,Assets!K$11:K$60)","v":527.52551524104001},null,"Overhead Distribution Lines",{"$f":"_xlfn.XLOOKUP($L9,Assets!$C$128:$C$765,Assets!G$128:G$765)","v":187.37607635867266},{"$f":"_xlfn.XLOOKUP($L9,Assets!$C$128:$C$765,Assets!H$128:H$765)","v":196.62456858584392},{"$f":"_xlfn.XLOOKUP($L9,Assets!$C$128:$C$765,Assets!I$128:I$765)","v":206.07984610287349},{"$f":"_xlfn.XLOOKUP($L9,Assets!$C$128:$C$765,Assets!J$128:J$765)","v":215.87219920720815},{"$f":"_xlfn.XLOOKUP($L9,Assets!$C$128:$C$765,Assets!K$128:K$765)","v":225.98196959204407},null,"Overhead Distribution Lines",6391.7590742637421,6666.8076092636329,6942.9469165292676,7226.4847256431276,7516.1010456777158,null,"Overhead Distribution Lines",0.39352306877017917,0.39881591688469886,0.40436822559032365,0.41037337594604878,0.4162678031646268,null,"Overhead Distribution Lines",{"$f":"T9*'PTRM Revenue data'!J$7","v":178.95526429858648},{"$f":"U9*'PTRM Revenue data'!K$7*'PTRM Revenue data'!J$8","v":191.88198133154356},{"$f":"V9*'PTRM Revenue data'!L$7*'PTRM Revenue data'!K$8","v":199.82973691519425},{"$f":"W9*'PTRM Revenue data'!M$7*'PTRM Revenue data'!L$8","v":207.9904338759967},{"$f":"X9*'PTRM Revenue data'!N$7*'PTRM Revenue data'!M$8","v":216.32608064596931},null,"Overhead Distribution Lines",{"$f":"M9*'PTRM Revenue data'!J$8","v":192.62219638266009},{"$f":"N9*'PTRM Revenue data'!K$8","v":202.12962614981794},{"$f":"O9*'PTRM Revenue data'!L$8","v":211.84963074235472},{"$f":"P9*'PTRM Revenue data'!M$8","v":221.91614830087656},{"$f":"Q9*'PTRM Revenue data'!N$8","v":232.30897012901559},null,"Overhead Distribution Lines",13.666932084073608,10.247644818274381,12.019893827160473,13.925714424879857,15.982889483046279]
[null,"Underground Distribution Cables",{"$f":"_xlfn.XLOOKUP(B10,'PTRM Input'!$G$6:$G$58,'PTRM Input'!$J$6:$J$58)","v":1130.2190906603334},null,"Underground Distribution Cables",{"$f":"_xlfn.XLOOKUP($E10,Assets!$C$11:$C$60,Assets!G$11:G$60)","v":28.48178950081336},{"$f":"_xlfn.XLOOKUP($E10,Assets!$C$11:$C$60,Assets!H$11:H$60)","v":29.411326555433238},{"$f":"_xlfn.XLOOKUP($E10,Assets!$C$11:$C$60,Assets!I$11:I$60)","v":30.417294597329271},{"$f":"_xlfn.XLOOKUP($E10,Assets!$C$11:$C$60,Assets!J$11:J$60)","v":31.158250747093081},{"$f":"_xlfn.XLOOKUP($E10,Assets!$C$11:$C$60,Assets!K$11:K$60)","v":32.415051823164355},null,"Underground Distribution Cables",{"$f":"_xlfn.XLOOKUP($L10,Assets!$C$128:$C$765,Assets!G$128:G$765)","v":28.257754652362006},{"$f":"_xlfn.XLOOKUP($L10,Assets!$C$128:$C$765,Assets!H$128:H$765)","v":28.73245114404223},{"$f":"_xlfn.XLOOKUP($L10,Assets!$C$128:$C$765,Assets!I$128:I$765)","v":29.222639919966117},{"$f":"_xlfn.XLOOKUP($L10,Assets!$C$128:$C$765,Assets!J$128:J$765)","v":29.729594829921606},{"$f":"_xlfn.XLOOKUP($L10,Assets!$C$128:$C$765,Assets!K$128:K$765)","v":30.248899009039825},null,"Underground Distribution Cables",1130.2190906603334,1130.4431255087848,1131.1220009201759,1132.3166555975392,1133.7453115147107,null,"Underground Distribution Cables",6.958448836567388E-2,6.7624377064570348E-2,6.5878336956508673E-2,6.4301334084138351E-2,6.2790756444636095E-2,null,"Underground Distribution Cables",{"$f":"T10*'PTRM Revenue data'!J$7","v":31.643660803614683},{"$f":"U10*'PTRM Revenue data'!K$7*'PTRM Revenue data'!J$8","v":32.536062148223124},{"$f":"V10*'PTRM Revenue data'!L$7*'PTRM Revenue data'!K$8","v":32.555601328989944},{"$f":"W10*'PTRM Revenue data'!M$7*'PTRM Revenue data'!L$8","v":32.589985508035539},{"$f":"X10*'PTRM Revenue data'!N$7*'PTRM Revenue data'!M$8","v":32.631104637924182},null,"Underground Distribution Cables",{"$f":"M10*'PTRM Revenue data'!J$8","v":29.048909934271713},{"$f":"N10*'PTRM Revenue data'!K$8","v":29.536896888740543},{"$f":"O10*'PTRM Revenue data'!L$8","v":30.040809877503563},{"$f":"P10*'PTRM Revenue data'!M$8","v":30.561958415354674},{"$f":"Q10*'PTRM Revenue data'!N$8","v":31.095801974875958},null,"Underground Distribution Cables",-2.5947508693429704,-2.9991652594825808,-2.5147914514863814,-2.0280270926808655,-1.535302663048224]
[null,"Distribution Equipment",{"$f":"_xlfn.XLOOKUP(B11,'PTRM Input'!$G$6:$G$58,'PTRM Input'!$J$6:$J$58)","v":23.907334258452106},null,"Distribution Equipment",{"$f":"_xlfn.XLOOKUP($E11,Assets!$C$11:$C$60,Assets!G$11:G$60)","v":3.3427217836739769},{"$f":"_xlfn.XLOOKUP($E11,Assets!$C$11:$C$60,Assets!H$11:H$60)","v":3.4657763446816539},{"$f":"_xlfn.XLOOKUP($E11,Assets!$C$11:$C$60,Assets!I$11:I$60)","v":3.5823095250760568},{"$f":"_xlfn.XLOOKUP($E11,Assets!$C$11:$C$60,Assets!J$11:J$60)","v":3.6579879311664527},{"$f":"_xlfn.XLOOKUP($E11,Assets!$C$11:$C$60,Assets!K$11:K$60)","v":3.8006968602214006},null,"Distribution Equipment",{"$f":"_xlfn.XLOOKUP($L11,Assets!$C$128:$C$765,Assets!G$128:G$765)","v":2.0589848171820435},{"$f":"_xlfn.XLOOKUP($L11,Assets!$C$128:$C$765,Assets!H$128:H$765)","v":2.154491153858443},{"$f":"_xlfn.XLOOKUP($L11,Assets!$C$128:$C$765,Assets!I$128:I$765)","v":2.2535133351350618},{"$f":"_xlfn.XLOOKUP($L11,Assets!$C$128:$C$765,Assets!J$128:J$765)","v":2.3558650358515205},{"$f":"_xlfn.XLOOKUP($L11,Assets!$C$128:$C$765,Assets!K$128:K$765)","v":2.4603789767419908},null,"Distribution Equipment",23.907334258452106,25.191071224944039,26.502356415767249,27.831152605708244,29.133275501023178,null,"Distribution Equipment",1.471908974382645E-3,1.5069581659929564E-3,1.5435392156452415E-3,1.5804591699676951E-3,1.6135020695038122E-3,null,"Distribution Equipment",{"$f":"T11*'PTRM Revenue data'!J$7","v":0.66935303273907654},{"$f":"U11*'PTRM Revenue data'!K$7*'PTRM Revenue data'!J$8","v":0.72504157038966854},{"$f":"V11*'PTRM Revenue data'!L$7*'PTRM Revenue data'!K$8","v":0.76278257256831994},{"$f":"W11*'PTRM Revenue data'!M$7*'PTRM Revenue data'!L$8","v":0.8010275708726653},{"$f":"X11*'PTRM Revenue data'!N$7*'PTRM Revenue data'!M$8","v":0.8385048667140842},null,"Distribution Equipment",{"$f":"M11*'PTRM Revenue data'!J$8","v":2.1166318855187098},{"$f":"N11*'PTRM Revenue data'!K$8","v":2.2148121905852718},{"$f":"O11*'PTRM Revenue data'!L$8","v":2.3166067762056541},{"$f":"P11*'PTRM Revenue data'!M$8","v":2.4218241005228012},{"$f":"Q11*'PTRM Revenue data'!N$8","v":2.5292642030062904},null,"Distribution Equipment",1.4472788527796334,1.4897706201956034,1.5538242036373342,1.6207965296501359,1.6907593362922062]
[null,"Substation Bays",{"$f":"_xlfn.XLOOKUP(B12,'PTRM Input'!$G$6:$G$58,'PTRM Input'!$J$6:$J$58)","v":1739.6024985014967},null,"Substation Bays",{"$f":"_xlfn.XLOOKUP($E12,Assets!$C$11:$C$60,Assets!G$11:G$60)","v":102.8514217132394},{"$f":"_xlfn.XLOOKUP($E12,Assets!$C$11:$C$60,Assets!H$11:H$60)","v":105.63744412207348},{"$f":"_xlfn.XLOOKUP($E12,Assets!$C$11:$C$60,Assets!I$11:I$60)","v":109.33269368594073},{"$f":"_xlfn.XLOOKUP($E12,Assets!$C$11:$C$60,Assets!J$11:J$60)","v":112.46957044135044},{"$f":"_xlfn.XLOOKUP($E12,Assets!$C$11:$C$60,Assets!K$11:K$60)","v":117.20398238080583},null,"Substation Bays",{"$f":"_xlfn.XLOOKUP($L12,Assets!$C$128:$C$765,Assets!G$128:G$765)","v":63.77934784098175},{"$f":"_xlfn.XLOOKUP($L12,Assets!$C$128:$C$765,Assets!H$128:H$765)","v":66.064934990164843},{"$f":"_xlfn.XLOOKUP($L12,Assets!$C$128:$C$765,Assets!I$128:I$765)","v":68.412433748433145},{"$f":"_xlfn.XLOOKUP($L12,Assets!$C$128:$C$765,Assets!J$128:J$765)","v":70.842049163676279},{"$f":"_xlfn.XLOOKUP($L12,Assets!$C$128:$C$765,Assets!K$128:K$765)","v":73.341372951261846},null,"Substation Bays",1739.6024985014967,1778.6745723737545,1818.2470815056631,1859.1673414431707,1900.7948627208448,null,"Substation Bays",0.10710255278660283,0.1064023100704251,0.10589759001078058,0.10557730450177831,0.1052726269860931,null,"Substation Bays",{"$f":"T12*'PTRM Revenue data'!J$7","v":48.705062452573159},{"$f":"U12*'PTRM Revenue data'!K$7*'PTRM Revenue data'!J$8","v":51.193257867060154},{"$f":"V12*'PTRM Revenue data'!L$7*'PTRM Revenue data'!K$8","v":52.332221506559861},{"$f":"W12*'PTRM Revenue data'!M$7*'PTRM Revenue data'!L$8","v":53.509975690211483},{"$f":"X12*'PTRM Revenue data'!N$7*'PTRM Revenue data'!M$8","v":54.708086049595821},null,"Substation Bays",{"$f":"M12*'PTRM Revenue data'!J$8","v":65.565029985296476},{"$f":"N12*'PTRM Revenue data'!K$8","v":67.914608572142853},{"$f":"O12*'PTRM Revenue data'!L$8","v":70.327832157621557},{"$f":"P12*'PTRM Revenue data'!M$8","v":72.8254714867399},{"$f":"Q12*'PTRM Revenue data'!N$8","v":75.394770870054032},null,"Substation Bays",16.859967532723317,16.721350705082699,17.995610651061696,19.315495796528417,20.686684820458211]
[null,"Substation Establishment",{"$f":"_xlfn.XLOOKUP(B13,'PTRM Input'!$G$6:$G$58,'PTRM Input'!$J$6:$J$58)","v":439.10496114383687},null,"Substation Establishment",{"$f":"_xlfn.XLOOKUP($E13,Assets!$C$11:$C$60,Assets!G$11:G$60)","v":45.621128892669731},{"$f":"_xlfn.XLOOKUP($E13,Assets!$C$11:$C$60,Assets!H$11:H$60)","v":47.215624918519438},{"$f":"_xlfn.XLOOKUP($E13,Assets!$C$11:$C$60,Assets!I$11:I$60)","v":48.897738404500451},{"$f":"_xlfn.XLOOKUP($E13,Assets!$C$11:$C$60,Assets!J$11:J$60)","v":50.109055375469204},{"$f":"_xlfn.XLOOKUP($E13,Assets!$C$11:$C$60,Assets!K$11:K$60)","v":52.201642367121309},null,"Substation Establishment",{"$f":"_xlfn.XLOOKUP($L13,Assets!$C$128:$C$765,Assets!G$128:G$765)","v":15.389492111995169},{"$f":"_xlfn.XLOOKUP($L13,Assets!$C$128:$C$765,Assets!H$128:H$765)","v":16.149844260206333},{"$f":"_xlfn.XLOOKUP($L13,Assets!$C$128:$C$765,Assets!I$128:I$765)","v":16.936771342181657},{"$f":"_xlfn.XLOOKUP($L13,Assets!$C$128:$C$765,Assets!J$128:J$765)","v":17.751733648923331},{"$f":"_xlfn.XLOOKUP($L13,Assets!$C$128:$C$765,Assets!K$128:K$765)","v":18.586884571847818},null,"Substation Establishment",439.10496114383687,469.33659792451141,500.40237858282455,532.36334564514345,564.72066737168939,null,"Substation Establishment",2.7034487660415663E-2,2.8076242273546527E-2,2.914422713314737E-2,3.0231537417784834E-2,3.1276193624839528E-2,null,"Substation Establishment",{"$f":"T13*'PTRM Revenue data'!J$7","v":12.293977833538323},{"$f":"U13*'PTRM Revenue data'!K$7*'PTRM Revenue data'!J$8","v":13.508299863944677},{"$f":"V13*'PTRM Revenue data'!L$7*'PTRM Revenue data'!K$8","v":14.4024254925357},{"$f":"W13*'PTRM Revenue data'!M$7*'PTRM Revenue data'!L$8","v":15.322316097548574},{"$f":"X13*'PTRM Revenue data'!N$7*'PTRM Revenue data'!M$8","v":16.253614459127903},null,"Substation Establishment",{"$f":"M13*'PTRM Revenue data'!J$8","v":15.820364207818077},{"$f":"N13*'PTRM Revenue data'!K$8","v":16.602004551980023},{"$f":"O13*'PTRM Revenue data'!L$8","v":17.410963869886398},{"$f":"P13*'PTRM Revenue data'!M$8","v":18.24874333749128},{"$f":"Q13*'PTRM Revenue data'!N$8","v":19.107276658344833},null,"Substation Establishment",3.5263863742797543,3.0937046880353467,3.008538377350698,2.926427239942706,2.8536621992169309]
[null,"Distribution Substation Switchgear",{"$f":"_xlfn.XLOOKUP(B14,'PTRM Input'!$G$6:$G$58,'PTRM Input'!$J$6:$J$58)","v":660.96655563483523},null,"Distribution Substation Switchgear",{"$f":"_xlfn.XLOOKUP($E14,Assets!$C$11:$C$60,Assets!G$11:G$60)","v":51.041572663454737},{"$f":"_xlfn.XLOOKUP($E14,Assets!$C$11:$C$60,Assets!H$11:H$60)","v":52.684990460223446},{"$f":"_xlfn.XLOOKUP($E14,Assets!$C$11:$C$60,Assets!I$11:I$60)","v":54.490217438499322},{"$f":"_xlfn.XLOOKUP($E14,Assets!$C$11:$C$60,Assets!J$11:J$60)","v":55.836158855981182},{"$f":"_xlfn.XLOOKUP($E14,Assets!$C$11:$C$60,Assets!K$11:K$60)","v":58.096129714066556},null,"Distribution Substation Switchgear",{"$f":"_xlfn.XLOOKUP($L14,Assets!$C$128:$C$765,Assets!G$128:G$765)","v":19.808673950868226},{"$f":"_xlfn.XLOOKUP($L14,Assets!$C$128:$C$765,Assets!H$128:H$765)","v":20.94293112116722},{"$f":"_xlfn.XLOOKUP($L14,Assets!$C$128:$C$765,Assets!I$128:I$765)","v":22.113708686949963},{"$f":"_xlfn.XLOOKUP($L14,Assets!$C$128:$C$765,Assets!J$128:J$765)","v":23.324602407805504},{"$f":"_xlfn.XLOOKUP($L14,Assets!$C$128:$C$765,Assets!K$128:K$765)","v":24.565405937938419},null,"Distribution Substation Switchgear",660.96655563483523,692.19945434742181,723.94151368647795,756.31802243802736,788.82957888620308,null,"Distribution Substation Switchgear",4.0693897298974296E-2,4.1408148582098785E-2,4.2163500432884242E-2,4.2949344244149201E-2,4.3688124185487093E-2,null,"Distribution Substation Switchgear",{"$f":"T14*'PTRM Revenue data'!J$7","v":18.505616886034339},{"$f":"U14*'PTRM Revenue data'!K$7*'PTRM Revenue data'!J$8","v":19.922669223608665},{"$f":"V14*'PTRM Revenue data'!L$7*'PTRM Revenue data'!K$8","v":20.836259294673315},{"$f":"W14*'PTRM Revenue data'!M$7*'PTRM Revenue data'!L$8","v":21.768109891233657},{"$f":"X14*'PTRM Revenue data'!N$7*'PTRM Revenue data'!M$8","v":22.703847388559957},null,"Distribution Substation Switchgear",{"$f":"M14*'PTRM Revenue data'!J$8","v":20.363273465821077},{"$f":"N14*'PTRM Revenue data'!K$8","v":21.529287354315336},{"$f":"O14*'PTRM Revenue data'!L$8","v":22.732844129433911},{"$f":"P14*'PTRM Revenue data'!M$8","v":23.977640224164233},{"$f":"Q14*'PTRM Revenue data'!N$8","v":25.253183537367448},null,"Distribution Substation Switchgear",1.8576565797867381,1.6066181307066714,1.8965848347605956,2.2095303329305764,2.549336148807491]
[null,"Zone Transformers",{"$f":"_xlfn.XLOOKUP(B15,'PTRM Input'!$G$6:$G$58,'PTRM Input'!$J$6:$J$58)","v":354.36593399756219},null,"Zone Transformers",{"$f":"_xlfn.XLOOKUP($E15,Assets!$C$11:$C$60,Assets!G$11:G$60)","v":15.462681831559085},{"$f":"_xlfn.XLOOKUP($E15,Assets!$C$11:$C$60,Assets!H$11:H$60)","v":15.908557769277847},{"$f":"_xlfn.XLOOKUP($E15,Assets!$C$11:$C$60,Assets!I$11:I$60)","v":16.461138388740956},{"$f":"_xlfn.XLOOKUP($E15,Assets!$C$11:$C$60,Assets!J$11:J$60)","v":16.910895270281301},{"$f":"_xlfn.XLOOKUP($E15,Assets!$C$11:$C$60,Assets!K$11:K$60)","v":17.613387273484506},null,"Zone Transformers",{"$f":"_xlfn.XLOOKUP($L15,Assets!$C$128:$C$765,Assets!G$128:G$765)","v":15.615911072738239},{"$f":"_xlfn.XLOOKUP($L15,Assets!$C$128:$C$765,Assets!H$128:H$765)","v":15.925164709369421},{"$f":"_xlfn.XLOOKUP($L15,Assets!$C$128:$C$765,Assets!I$128:I$765)","v":16.243335864754979},{"$f":"_xlfn.XLOOKUP($L15,Assets!$C$128:$C$765,Assets!J$128:J$765)","v":16.572558632529798},{"$f":"_xlfn.XLOOKUP($L15,Assets!$C$128:$C$765,Assets!K$128:K$765)","v":16.910776537935423},null,"Zone Transformers",354.36593399756219,354.21270475638306,354.19609781629146,354.41390034027745,354.75223697802892,null,"Zone Transformers",2.1817338262299042E-2,2.1189401719547928E-2,2.0628941760163715E-2,2.012624869305351E-2,1.9647412063399931E-2,null,"Zone Transformers",{"$f":"T15*'PTRM Revenue data'!J$7","v":9.921470543577076},{"$f":"U15*'PTRM Revenue data'!K$7*'PTRM Revenue data'!J$8","v":10.194839807139266},{"$f":"V15*'PTRM Revenue data'!L$7*'PTRM Revenue data'!K$8","v":10.194361831359043},{"$f":"W15*'PTRM Revenue data'!M$7*'PTRM Revenue data'!L$8","v":10.200630555805715},{"$f":"X15*'PTRM Revenue data'!N$7*'PTRM Revenue data'!M$8","v":10.210368455594303},null,"Zone Transformers",{"$f":"M15*'PTRM Revenue data'!J$8","v":16.053122403893894},{"$f":"N15*'PTRM Revenue data'!K$8","v":16.371034465480651},{"$f":"O15*'PTRM Revenue data'!L$8","v":16.698113716828942},{"$f":"P15*'PTRM Revenue data'!M$8","v":17.036554001524493},{"$f":"Q15*'PTRM Revenue data'!N$8","v":17.384241268016659},null,"Zone Transformers",6.1316518603168184,6.1761946583413856,6.5037518854698995,6.8359234457187785,7.1738728124223563]
[null,"Distribution Transformers",{"$f":"_xlfn.XLOOKUP(B16,'PTRM Input'!$G$6:$G$58,'PTRM Input'!$J$6:$J$58)","v":1690.1679443134087},null,"Distribution Transformers",{"$f":"_xlfn.XLOOKUP($E16,Assets!$C$11:$C$60,Assets!G$11:G$60)","v":100.237640415082},{"$f":"_xlfn.XLOOKUP($E16,Assets!$C$11:$C$60,Assets!H$11:H$60)","v":102.90273834737923},{"$f":"_xlfn.XLOOKUP($E16,Assets!$C$11:$C$60,Assets!I$11:I$60)","v":106.50957554624085},{"$f":"_xlfn.XLOOKUP($E16,Assets!$C$11:$C$60,Assets!J$11:J$60)","v":109.60724215750641},{"$f":"_xlfn.XLOOKUP($E16,Assets!$C$11:$C$60,Assets!K$11:K$60)","v":114.2385478545598},null,"Distribution Transformers",{"$f":"_xlfn.XLOOKUP($L16,Assets!$C$128:$C$765,Assets!G$128:G$765)","v":70.927954394958959},{"$f":"_xlfn.XLOOKUP($L16,Assets!$C$128:$C$765,Assets!H$128:H$765)","v":73.155457515294117},{"$f":"_xlfn.XLOOKUP($L16,Assets!$C$128:$C$765,Assets!I$128:I$765)","v":75.442185034124762},{"$f":"_xlfn.XLOOKUP($L16,Assets!$C$128:$C$765,Assets!J$128:J$765)","v":77.809064490707897},{"$f":"_xlfn.XLOOKUP($L16,Assets!$C$128:$C$765,Assets!K$128:K$765)","v":80.244780983096931},null,"Distribution Transformers",1690.1679443134087,1719.4776303335318,1749.224911165617,1780.2923016777329,1812.0904793445313,null,"Distribution Transformers",0.10405900292163503,0.10286108252941474,0.10187762948359427,0.10109819500728741,0.10035986988307821,null,"Distribution Transformers",{"$f":"T16*'PTRM Revenue data'!J$7","v":47.321003133780529},{"$f":"U16*'PTRM Revenue data'!K$7*'PTRM Revenue data'!J$8","v":49.489469908388116},{"$f":"V16*'PTRM Revenue data'!L$7*'PTRM Revenue data'!K$8","v":50.345646885410083},{"$f":"W16*'PTRM Revenue data'!M$7*'PTRM Revenue data'!L$8","v":51.239818848312133},{"$f":"X16*'PTRM Revenue data'!N$7*'PTRM Revenue data'!M$8","v":52.155024099617066},null,"Distribution Transformers",{"$f":"M16*'PTRM Revenue data'!J$8","v":72.913781876475866},{"$f":"N16*'PTRM Revenue data'!K$8","v":75.203650208796333},{"$f":"O16*'PTRM Revenue data'!L$8","v":77.554401093144449},{"$f":"P16*'PTRM Revenue data'!M$8","v":79.987547994071846},{"$f":"Q16*'PTRM Revenue data'!N$8","v":82.491459217142605},null,"Distribution Transformers",25.592778742695337,25.714180300408216,27.208754207734366,28.747729145759713,30.336435117525539]
[null,"Low Voltage Services",{"$f":"_xlfn.XLOOKUP(B17,'PTRM Input'!$G$6:$G$58,'PTRM Input'!$J$6:$J$58)","v":387.94239181446198},null,"Low Voltage Services",{"$f":"_xlfn.XLOOKUP($E17,Assets!$C$11:$C$60,Assets!G$11:G$60)","v":36.52973041328292},{"$f":"_xlfn.XLOOKUP($E17,Assets!$C$11:$C$60,Assets!H$11:H$60)","v":37.260450002498615},{"$f":"_xlfn.XLOOKUP($E17,Assets!$C$11:$C$60,Assets!I$11:I$60)","v":38.601266422433866},{"$f":"_xlfn.XLOOKUP($E17,Assets!$C$11:$C$60,Assets!J$11:J$60)","v":39.924538985126851},{"$f":"_xlfn.XLOOKUP($E17,Assets!$C$11:$C$60,Assets!K$11:K$60)","v":41.69491858850035},null,"Low Voltage Services",{"$f":"_xlfn.XLOOKUP($L17,Assets!$C$128:$C$765,Assets!G$128:G$765)","v":13.645155561247948},{"$f":"_xlfn.XLOOKUP($L17,Assets!$C$128:$C$765,Assets!H$128:H$765)","v":14.688862144484602},{"$f":"_xlfn.XLOOKUP($L17,Assets!$C$128:$C$765,Assets!I$128:I$765)","v":15.753446430270277},{"$f":"_xlfn.XLOOKUP($L17,Assets!$C$128:$C$765,Assets!J$128:J$765)","v":16.85633975662553},{"$f":"_xlfn.XLOOKUP($L17,Assets!$C$128:$C$765,Assets!K$128:K$765)","v":17.997040870486298},null,"Low Voltage Services",387.94239181446198,410.8269666664969,433.39855452451093,456.24637451667451,479.31457374517584,null,"Low Voltage Services",2.3884548644452077E-2,2.4576130435261748E-2,2.5241818290337042E-2,2.5909051507320556E-2,2.6546107273588835E-2,null,"Low Voltage Services",{"$f":"T17*'PTRM Revenue data'!J$7","v":10.861537872933631},{"$f":"U17*'PTRM Revenue data'!K$7*'PTRM Revenue data'!J$8","v":11.824293870256508},{"$f":"V17*'PTRM Revenue data'!L$7*'PTRM Revenue data'!K$8","v":12.473942285785501},{"$f":"W17*'PTRM Revenue data'!M$7*'PTRM Revenue data'!L$8","v":13.13154112861262},{"$f":"X17*'PTRM Revenue data'!N$7*'PTRM Revenue data'!M$8","v":13.795482858019227},null,"Low Voltage Services",{"$f":"M17*'PTRM Revenue data'!J$8","v":14.027190051516925},{"$f":"N17*'PTRM Revenue data'!K$8","v":15.10011813470112},{"$f":"O17*'PTRM Revenue data'!L$8","v":16.194508450410229},{"$f":"P17*'PTRM Revenue data'!M$8","v":17.328280375977045},{"$f":"Q17*'PTRM Revenue data'!N$8","v":18.50091862434881},null,"Low Voltage Services",3.1656521785832936,3.2758242644446121,3.7205661646247279,4.1967392473644249,4.7054357663295825]
[null,"Metering",{"$f":"_xlfn.XLOOKUP(B18,'PTRM Input'!$G$6:$G$58,'PTRM Input'!$J$6:$J$58)","v":68.940854379729799},null,"Metering",{"$f":"_xlfn.XLOOKUP($E18,Assets!$C$11:$C$60,Assets!G$11:G$60)","v":2.2932399877070804},{"$f":"_xlfn.XLOOKUP($E18,Assets!$C$11:$C$60,Assets!H$11:H$60)","v":2.3785736653538851},{"$f":"_xlfn.XLOOKUP($E18,Assets!$C$11:$C$60,Assets!I$11:I$60)","v":2.4584199140287559},{"$f":"_xlfn.XLOOKUP($E18,Assets!$C$11:$C$60,Assets!J$11:J$60)","v":2.5096001571630371},{"$f":"_xlfn.XLOOKUP($E18,Assets!$C$11:$C$60,Assets!K$11:K$60)","v":2.6071905424802844},null,"Metering",{"$f":"_xlfn.XLOOKUP($L18,Assets!$C$128:$C$765,Assets!G$128:G$765)","v":4.8091661490940689},{"$f":"_xlfn.XLOOKUP($L18,Assets!$C$128:$C$765,Assets!H$128:H$765)","v":4.9008957486023519},{"$f":"_xlfn.XLOOKUP($L18,Assets!$C$128:$C$765,Assets!I$128:I$765)","v":4.996038695216507},{"$f":"_xlfn.XLOOKUP($L18,Assets!$C$128:$C$765,Assets!J$128:J$765)","v":5.0943754917776571},{"$f":"_xlfn.XLOOKUP($L18,Assets!$C$128:$C$765,Assets!K$128:K$765)","v":5.1947594980641787},null,"Metering",68.940854379729799,66.424928218342814,63.902606135094345,61.364987353906592,58.780212019291973,null,"Metering",4.2444992472239519E-3,3.9736137899927691E-3,3.7217889988366447E-3,3.4847589085671383E-3,3.2554524717163897E-3,null,"Metering",{"$f":"T18*'PTRM Revenue data'!J$7","v":1.9301930302991013},{"$f":"U18*'PTRM Revenue data'!K$7*'PTRM Revenue data'!J$8","v":1.9118216068858447},{"$f":"V18*'PTRM Revenue data'!L$7*'PTRM Revenue data'!K$8","v":1.8392249178472242},{"$f":"W18*'PTRM Revenue data'!M$7*'PTRM Revenue data'!L$8","v":1.7661879640101499},{"$f":"X18*'PTRM Revenue data'!N$7*'PTRM Revenue data'!M$8","v":1.6917937649314791},null,"Metering",{"$f":"M18*'PTRM Revenue data'!J$8","v":4.9438122753431371},{"$f":"N18*'PTRM Revenue data'!K$8","v":5.0381101028671011},{"$f":"O18*'PTRM Revenue data'!L$8","v":5.1359168437450355},{"$f":"P18*'PTRM Revenue data'!M$8","v":5.2370068553780325},{"$f":"Q18*'PTRM Revenue data'!N$8","v":5.3402013941279396},null,"Metering",3.013619245044036,3.1262884959812567,3.2966919258978113,3.4708188913678826,3.6484076291964604]
[null,"Communications – Pilot Wires",{"$f":"_xlfn.XLOOKUP(B19,'PTRM Input'!$G$6:$G$58,'PTRM Input'!$J$6:$J$58)","v":194.2753043059993},null,"Communications – Pilot Wires",{"$f":"_xlfn.XLOOKUP($E19,Assets!$C$11:$C$60,Assets!G$11:G$60)","v":13.436934603345646},{"$f":"_xlfn.XLOOKUP($E19,Assets!$C$11:$C$60,Assets!H$11:H$60)","v":13.768441015964221},{"$f":"_xlfn.XLOOKUP($E19,Assets!$C$11:$C$60,Assets!I$11:I$60)","v":14.25476394042964},{"$f":"_xlfn.XLOOKUP($E19,Assets!$C$11:$C$60,Assets!J$11:J$60)","v":14.690820692338088},{"$f":"_xlfn.XLOOKUP($E19,Assets!$C$11:$C$60,Assets!K$11:K$60)","v":15.320493114755905},null,"Communications – Pilot Wires",{"$f":"_xlfn.XLOOKUP($L19,Assets!$C$128:$C$765,Assets!G$128:G$765)","v":9.2315587677447208},{"$f":"_xlfn.XLOOKUP($L19,Assets!$C$128:$C$765,Assets!H$128:H$765)","v":9.6154711849831678},{"$f":"_xlfn.XLOOKUP($L19,Assets!$C$128:$C$765,Assets!I$128:I$765)","v":10.008855214010717},{"$f":"_xlfn.XLOOKUP($L19,Assets!$C$128:$C$765,Assets!J$128:J$765)","v":10.416134183737279},{"$f":"_xlfn.XLOOKUP($L19,Assets!$C$128:$C$765,Assets!K$128:K$765)","v":10.835871917804081},null,"Communications – Pilot Wires",194.2753043059993,198.4806801416002,202.63364997258125,206.87955869900017,211.15424520760098,null,"Communications – Pilot Wires",1.1960997441938724E-2,1.187333714633983E-2,1.1801704732788592E-2,1.174815503536291E-2,1.1694456107931087E-2,null,"Communications – Pilot Wires",{"$f":"T19*'PTRM Revenue data'!J$7","v":5.4392833060237233},{"$f":"U19*'PTRM Revenue data'!K$7*'PTRM Revenue data'!J$8","v":5.7126091517449948},{"$f":"V19*'PTRM Revenue data'!L$7*'PTRM Revenue data'!K$8","v":5.8321386366624068},{"$f":"W19*'PTRM Revenue data'!M$7*'PTRM Revenue data'!L$8","v":5.9543430599378135},{"$f":"X19*'PTRM Revenue data'!N$7*'PTRM Revenue data'!M$8","v":6.0773757563818824},null,"Communications – Pilot Wires",{"$f":"M19*'PTRM Revenue data'!J$8","v":9.4900222079300018},{"$f":"N19*'PTRM Revenue data'!K$8","v":9.8846833325737453},{"$f":"O19*'PTRM Revenue data'!L$8","v":10.289081253405966},{"$f":"P19*'PTRM Revenue data'!M$8","v":10.707763142864616},{"$f":"Q19*'PTRM Revenue data'!N$8","v":11.139252614796266},null,"Communications – Pilot Wires",4.0507389019062785,4.1720741808287505,4.4569426167435591,4.7534200829268025,5.0618768584143838]
[]
[null,"Land & Easements (System) - combined",{"$f":"_xlfn.XLOOKUP(B21,'PTRM Input'!$G$6:$G$58,'PTRM Input'!$J$6:$J$58)","v":119.98157640095687},null,"Land & Easements (System) - combined",{"$f":"_xlfn.XLOOKUP($E21,Assets!$C$11:$C$60,Assets!G$11:G$60)","v":0.47381264447245058},{"$f":"_xlfn.XLOOKUP($E21,Assets!$C$11:$C$60,Assets!H$11:H$60)","v":0.49195085181947168},{"$f":"_xlfn.XLOOKUP($E21,Assets!$C$11:$C$60,Assets!I$11:I$60)","v":0.50839249637388839},{"$f":"_xlfn.XLOOKUP($E21,Assets!$C$11:$C$60,Assets!J$11:J$60)","v":0.51855709834652031},{"$f":"_xlfn.XLOOKUP($E21,Assets!$C$11:$C$60,Assets!K$11:K$60)","v":0.53854637132920813},null,"Land & Easements (System) - combined",{"$f":"_xlfn.XLOOKUP($L21,Assets!$C$128:$C$765,Assets!G$128:G$765)","v":0},{"$f":"_xlfn.XLOOKUP($L21,Assets!$C$128:$C$765,Assets!H$128:H$765)","v":0},{"$f":"_xlfn.XLOOKUP($L21,Assets!$C$128:$C$765,Assets!I$128:I$765)","v":0},{"$f":"_xlfn.XLOOKUP($L21,Assets!$C$128:$C$765,Assets!J$128:J$765)","v":0},{"$f":"_xlfn.XLOOKUP($L21,Assets!$C$128:$C$765,Assets!K$128:K$765)","v":0},null,"Land & Easements (System) - combined",119.98157640095687,120.45538904542931,120.94733989724878,121.45573239362267,121.97428949196919,null,"Land & Easements (System) - combined",7.3869364587442537E-3,7.2057766237478239E-3,7.0441646482540966E-3,6.8971568919956533E-3,6.7553601555938132E-3,null,"Land & Easements (System) - combined",{"$f":"T21*'PTRM Revenue data'!J$7","v":3.3592215329654831},{"$f":"U21*'PTRM Revenue data'!K$7*'PTRM Revenue data'!J$8","v":3.4669095115303326},{"$f":"V21*'PTRM Revenue data'!L$7*'PTRM Revenue data'!K$8","v":3.4810686878103998},{"$f":"W21*'PTRM Revenue data'!M$7*'PTRM Revenue data'!L$8","v":3.4957010823859931},{"$f":"X21*'PTRM Revenue data'!N$7*'PTRM Revenue data'!M$8","v":3.5106260313714723},null,"Land & Easements (System) - combined",{"$f":"M21*'PTRM Revenue data'!J$8","v":0},{"$f":"N21*'PTRM Revenue data'!K$8","v":0},{"$f":"O21*'PTRM Revenue data'!L$8","v":0},{"$f":"P21*'PTRM Revenue data'!M$8","v":0},{"$f":"Q21*'PTRM Revenue data'!N$8","v":0},null,"Land & Easements (System) - combined",-3.3592215329654831,-3.4669095115303326,-3.4810686878103998,-3.4957010823859931,-3.5106260313714723]
[null,"Land Improvements",{"$f":"_xlfn.XLOOKUP(B22,'PTRM Input'!$G$6:$G$58,'PTRM Input'!$J$6:$J$58)","v":137.69435408314962},null,"Land Improvements",{"$f":"_xlfn.XLOOKUP($E22,Assets!$C$11:$C$60,Assets!G$11:G$60)","v":0.47381264447245058},{"$f":"_xlfn.XLOOKUP($E22,Assets!$C$11:$C$60,Assets!H$11:H$60)","v":0.49195085181947168},{"$f":"_xlfn.XLOOKUP($E22,Assets!$C$11:$C$60,Assets!I$11:I$60)","v":0.50839249637388839},{"$f":"_xlfn.XLOOKUP($E22,Assets!$C$11:$C$60,Assets!J$11:J$60)","v":0.51855709834652031},{"$f":"_xlfn.XLOOKUP($E22,Assets!$C$11:$C$60,Assets!K$11:K$60)","v":0.53854637132920813},null,"Land Improvements",{"$f":"_xlfn.XLOOKUP($L22,Assets!$C$128:$C$765,Assets!G$128:G$765)","v":4.9034374995175547},{"$f":"_xlfn.XLOOKUP($L22,Assets!$C$128:$C$765,Assets!H$128:H$765)","v":4.9152828156293662},{"$f":"_xlfn.XLOOKUP($L22,Assets!$C$128:$C$765,Assets!I$128:I$765)","v":4.9275815869248527},{"$f":"_xlfn.XLOOKUP($L22,Assets!$C$128:$C$765,Assets!J$128:J$765)","v":4.9402913993341997},{"$f":"_xlfn.XLOOKUP($L22,Assets!$C$128:$C$765,Assets!K$128:K$765)","v":4.9532553267928625},null,"Land Improvements",137.69435408314962,133.2647292281045,128.84139726429461,124.42220817374364,120.00047387275596,null,"Land Improvements",8.4774635810831601E-3,7.9720457362002645E-3,7.5039270529789559E-3,7.0656153786275598E-3,6.6460433852805114E-3,null,"Land Improvements",{"$f":"T22*'PTRM Revenue data'!J$7","v":3.8551405397287395},{"$f":"U22*'PTRM Revenue data'!K$7*'PTRM Revenue data'!J$8","v":3.835583953310564},{"$f":"V22*'PTRM Revenue data'!L$7*'PTRM Revenue data'!K$8","v":3.708272989645792},{"$f":"W22*'PTRM Revenue data'!M$7*'PTRM Revenue data'!L$8","v":3.5810812648695429},{"$f":"X22*'PTRM Revenue data'!N$7*'PTRM Revenue data'!M$8","v":3.453816284638791},null,"Land Improvements",{"$f":"M22*'PTRM Revenue data'!J$8","v":5.040723017244745},{"$f":"N22*'PTRM Revenue data'!K$8","v":5.0528999762815889},{"$f":"O22*'PTRM Revenue data'!L$8","v":5.0655430862547632},{"$f":"P22*'PTRM Revenue data'!M$8","v":5.0786087455933311},{"$f":"Q22*'PTRM Revenue data'!N$8","v":5.0919356346464095},null,"Land Improvements",1.1855824775160055,1.2173160229710249,1.3572700966089712,1.4975274807237882,1.6381193500076185]
[null,"Control Centre - SCADA",{"$f":"_xlfn.XLOOKUP(B23,'PTRM Input'!$G$6:$G$58,'PTRM Input'!$J$6:$J$58)","v":26.985498615906216},null,"Control Centre - SCADA",{"$f":"_xlfn.XLOOKUP($E23,Assets!$C$11:$C$60,Assets!G$11:G$60)","v":4.3560819712696475},{"$f":"_xlfn.XLOOKUP($E23,Assets!$C$11:$C$60,Assets!H$11:H$60)","v":4.5167020002843712},{"$f":"_xlfn.XLOOKUP($E23,Assets!$C$11:$C$60,Assets!I$11:I$60)","v":4.6685340924852765},{"$f":"_xlfn.XLOOKUP($E23,Assets!$C$11:$C$60,Assets!J$11:J$60)","v":4.7669438258380143},{"$f":"_xlfn.XLOOKUP($E23,Assets!$C$11:$C$60,Assets!K$11:K$60)","v":4.9528259645252035},null,"Control Centre - SCADA",{"$f":"_xlfn.XLOOKUP($L23,Assets!$C$128:$C$765,Assets!G$128:G$765)","v":7.3661033075177462},{"$f":"_xlfn.XLOOKUP($L23,Assets!$C$128:$C$765,Assets!H$128:H$765)","v":7.7968511281518778},{"$f":"_xlfn.XLOOKUP($L23,Assets!$C$128:$C$765,Assets!I$128:I$765)","v":5.3921989216814827},{"$f":"_xlfn.XLOOKUP($L23,Assets!$C$128:$C$765,Assets!J$128:J$765)","v":5.4548985317228489},{"$f":"_xlfn.XLOOKUP($L23,Assets!$C$128:$C$765,Assets!K$128:K$765)","v":5.3221694004328377},null,"Control Centre - SCADA",26.985498615906216,23.975477279658115,20.695328151790608,19.971663322594402,19.283708616709568,null,"Control Centre - SCADA",1.6614231081367962E-3,1.4342399712793338E-3,1.2053286916000813E-3,1.134139102497245E-3,1.0679988166684734E-3,null,"Control Centre - SCADA",{"$f":"T23*'PTRM Revenue data'!J$7","v":0.7555348975031424},{"$f":"U23*'PTRM Revenue data'!K$7*'PTRM Revenue data'!J$8","v":0.69005472385280653},{"$f":"V23*'PTRM Revenue data'!L$7*'PTRM Revenue data'!K$8","v":0.59564649271627446},{"$f":"W23*'PTRM Revenue data'!M$7*'PTRM Revenue data'!L$8","v":0.57481819686847235},{"$f":"X23*'PTRM Revenue data'!N$7*'PTRM Revenue data'!M$8","v":0.55501769867378659},null,"Control Centre - SCADA",{"$f":"M23*'PTRM Revenue data'!J$8","v":7.5723380777792286},{"$f":"N23*'PTRM Revenue data'!K$8","v":8.0151458946040801},{"$f":"O23*'PTRM Revenue data'!L$8","v":5.5431686894666079},{"$f":"P23*'PTRM Revenue data'!M$8","v":5.6076237513571447},{"$f":"Q23*'PTRM Revenue data'!N$8","v":5.4711784948981226},null,"Control Centre - SCADA",6.8168031802760858,7.3250911707512731,4.9475221967503336,5.0328055544886725,4.9161607962243359]
[null,"Other Equipment",{"$f":"_xlfn.XLOOKUP(B24,'PTRM Input'!$G$6:$G$58,'PTRM Input'!$J$6:$J$58)","v":1.3165870636483477},null,"Other Equipment",{"$f":"_xlfn.XLOOKUP($E24,Assets!$C$11:$C$60,Assets!G$11:G$60)","v":0},{"$f":"_xlfn.XLOOKUP($E24,Assets!$C$11:$C$60,Assets!H$11:H$60)","v":0},{"$f":"_xlfn.XLOOKUP($E24,Assets!$C$11:$C$60,Assets!I$11:I$60)","v":0},{"$f":"_xlfn.XLOOKUP($E24,Assets!$C$11:$C$60,Assets!J$11:J$60)","v":0},{"$f":"_xlfn.XLOOKUP($E24,Assets!$C$11:$C$60,Assets!K$11:K$60)","v":0},null,"Other Equipment",{"$f":"_xlfn.XLOOKUP($L24,Assets!$C$128:$C$765,Assets!G$128:G$765)","v":3.7315021508326454E-2},{"$f":"_xlfn.XLOOKUP($L24,Assets!$C$128:$C$765,Assets!H$128:H$765)","v":3.7315021508326454E-2},{"$f":"_xlfn.XLOOKUP($L24,Assets!$C$128:$C$765,Assets!I$128:I$765)","v":3.7315021508326454E-2},{"$f":"_xlfn.XLOOKUP($L24,Assets!$C$128:$C$765,Assets!J$128:J$765)","v":3.7315021508326454E-2},{"$f":"_xlfn.XLOOKUP($L24,Assets!$C$128:$C$765,Assets!K$128:K$765)","v":3.7315021508326454E-2},null,"Other Equipment",1.3165870636483477,1.2792720421400212,1.2419570206316948,1.2046419991233683,1.1673269776150419,null,"Other Equipment",8.1058653114158102E-5,7.6527489967178762E-5,7.2333544059895212E-5,6.840850327026166E-5,6.4650625848897459E-5,null,"Other Equipment",{"$f":"T24*'PTRM Revenue data'!J$7","v":3.6861556139681249E-2},{"$f":"U24*'PTRM Revenue data'!K$7*'PTRM Revenue data'!J$8","v":3.6819609698470049E-2},{"$f":"V24*'PTRM Revenue data'!L$7*'PTRM Revenue data'!K$8","v":3.574562036502988E-2},{"$f":"W24*'PTRM Revenue data'!M$7*'PTRM Revenue data'!L$8","v":3.4671631031589718E-2},{"$f":"X24*'PTRM Revenue data'!N$7*'PTRM Revenue data'!M$8","v":3.3597641698149563E-2},null,"Other Equipment",{"$f":"M24*'PTRM Revenue data'!J$8","v":3.8359760438368057E-2},{"$f":"N24*'PTRM Revenue data'!K$8","v":3.8359760438368057E-2},{"$f":"O24*'PTRM Revenue data'!L$8","v":3.8359760438368057E-2},{"$f":"P24*'PTRM Revenue data'!M$8","v":3.8359760438368057E-2},{"$f":"Q24*'PTRM Revenue data'!N$8","v":3.8359760438368057E-2},null,"Other Equipment",1.4982042986868074E-3,1.540150739898008E-3,2.6141400733381767E-3,3.6881294067783385E-3,4.7621187402184934E-3]
[null,"Generation Assets",{"$f":"_xlfn.XLOOKUP(B25,'PTRM Input'!$G$6:$G$58,'PTRM Input'!$J$6:$J$58)","v":14.400649957866881},null,"Generation Assets",{"$f":"_xlfn.XLOOKUP($E25,Assets!$C$11:$C$60,Assets!G$11:G$60)","v":0},{"$f":"_xlfn.XLOOKUP($E25,Assets!$C$11:$C$60,Assets!H$11:H$60)","v":0},{"$f":"_xlfn.XLOOKUP($E25,Assets!$C$11:$C$60,Assets!I$11:I$60)","v":0},{"$f":"_xlfn.XLOOKUP($E25,Assets!$C$11:$C$60,Assets!J$11:J$60)","v":0},{"$f":"_xlfn.XLOOKUP($E25,Assets!$C$11:$C$60,Assets!K$11:K$60)","v":0},null,"Generation Assets",{"$f":"_xlfn.XLOOKUP($L25,Assets!$C$128:$C$765,Assets!G$128:G$765)","v":0.69805123786391676},{"$f":"_xlfn.XLOOKUP($L25,Assets!$C$128:$C$765,Assets!H$128:H$765)","v":0.69805123786391676},{"$f":"_xlfn.XLOOKUP($L25,Assets!$C$128:$C$765,Assets!I$128:I$765)","v":0.69805123786391676},{"$f":"_xlfn.XLOOKUP($L25,Assets!$C$128:$C$765,Assets!J$128:J$765)","v":0.69805123786391676},{"$f":"_xlfn.XLOOKUP($L25,Assets!$C$128:$C$765,Assets!K$128:K$765)","v":0.69805123786391676},null,"Generation Assets",14.400649957866881,13.702598720002964,13.004547482139047,12.306496244275131,11.608445006411214,null,"Generation Assets",8.8660850602503339E-4,8.1970484113380419E-4,7.574054437083943E-4,6.9885409041407797E-4,6.4291603739881126E-4,null,"Generation Assets",{"$f":"T25*'PTRM Revenue data'!J$7","v":0.40318667980744338},{"$f":"U25*'PTRM Revenue data'!K$7*'PTRM Revenue data'!J$8","v":0.39438393094347185},{"$f":"V25*'PTRM Revenue data'!L$7*'PTRM Revenue data'!K$8","v":0.37429283750826481},{"$f":"W25*'PTRM Revenue data'!M$7*'PTRM Revenue data'!L$8","v":0.35420174407305777},{"$f":"X25*'PTRM Revenue data'!N$7*'PTRM Revenue data'!M$8","v":0.33411065063785078},null,"Generation Assets",{"$f":"M25*'PTRM Revenue data'!J$8","v":0.71759514468432239},{"$f":"N25*'PTRM Revenue data'!K$8","v":0.71759514468432239},{"$f":"O25*'PTRM Revenue data'!L$8","v":0.71759514468432239},{"$f":"P25*'PTRM Revenue data'!M$8","v":0.71759514468432239},{"$f":"Q25*'PTRM Revenue data'!N$8","v":0.71759514468432239},null,"Generation Assets",0.31440846487687901,0.32321121374085054,0.34330230717605759,0.36339340061126463,0.38348449404647161]
[null,"Motor Vehicles",{"$f":"_xlfn.XLOOKUP(B26,'PTRM Input'!$G$6:$G$58,'PTRM Input'!$J$6:$J$58)","v":172.34549175507311},null,"Motor Vehicles",{"$f":"_xlfn.XLOOKUP($E26,Assets!$C$11:$C$60,Assets!G$11:G$60)","v":57.666318942359005},{"$f":"_xlfn.XLOOKUP($E26,Assets!$C$11:$C$60,Assets!H$11:H$60)","v":56.575579982276849},{"$f":"_xlfn.XLOOKUP($E26,Assets!$C$11:$C$60,Assets!I$11:I$60)","v":43.968195865777183},{"$f":"_xlfn.XLOOKUP($E26,Assets!$C$11:$C$60,Assets!J$11:J$60)","v":35.82197759374008},{"$f":"_xlfn.XLOOKUP($E26,Assets!$C$11:$C$60,Assets!K$11:K$60)","v":48.806655650740659},null,"Motor Vehicles",{"$f":"_xlfn.XLOOKUP($L26,Assets!$C$128:$C$765,Assets!G$128:G$765)","v":27.34774224397831},{"$f":"_xlfn.XLOOKUP($L26,Assets!$C$128:$C$765,Assets!H$128:H$765)","v":30.337106464268452},{"$f":"_xlfn.XLOOKUP($L26,Assets!$C$128:$C$765,Assets!I$128:I$765)","v":34.091771715689639},{"$f":"_xlfn.XLOOKUP($L26,Assets!$C$128:$C$765,Assets!J$128:J$765)","v":37.199940385689274},{"$f":"_xlfn.XLOOKUP($L26,Assets!$C$128:$C$765,Assets!K$128:K$765)","v":38.279490946973596},null,"Motor Vehicles",172.34549175507311,202.66406845345381,228.9025419714622,238.77896612154976,237.40100332960054,null,"Motor Vehicles",1.0610839053249875E-2,1.2123592132393179E-2,1.3331646611002081E-2,1.3559639873657521E-2,1.3148092810955603E-2,null,"Motor Vehicles",{"$f":"T26*'PTRM Revenue data'!J$7","v":4.8252965528510057},{"$f":"U26*'PTRM Revenue data'!K$7*'PTRM Revenue data'!J$8","v":5.8330141319100592},{"$f":"V26*'PTRM Revenue data'!L$7*'PTRM Revenue data'!K$8","v":6.5882017090579144},{"$f":"W26*'PTRM Revenue data'!M$7*'PTRM Revenue data'!L$8","v":6.8724618745614494},{"$f":"X26*'PTRM Revenue data'!N$7*'PTRM Revenue data'!M$8","v":6.8328017784229376},null,"Motor Vehicles",{"$f":"M26*'PTRM Revenue data'!J$8","v":28.113419170217039},{"$f":"N26*'PTRM Revenue data'!K$8","v":31.186479045789426},{"$f":"O26*'PTRM Revenue data'!L$8","v":35.046266706333675},{"$f":"P26*'PTRM Revenue data'!M$8","v":38.241457296177565},{"$f":"Q26*'PTRM Revenue data'!N$8","v":39.351232910342276},null,"Motor Vehicles",23.288122617366035,25.353464913879368,28.458064997275763,31.368995421616116,32.518431131919336]
[null,"Plant & Equipment",{"$f":"_xlfn.XLOOKUP(B27,'PTRM Input'!$G$6:$G$58,'PTRM Input'!$J$6:$J$58)","v":41.384902151101194},null,"Plant & Equipment",{"$f":"_xlfn.XLOOKUP($E27,Assets!$C$11:$C$60,Assets!G$11:G$60)","v":6.8076028020555199},{"$f":"_xlfn.XLOOKUP($E27,Assets!$C$11:$C$60,Assets!H$11:H$60)","v":6.4016346125123418},{"$f":"_xlfn.XLOOKUP($E27,Assets!$C$11:$C$60,Assets!I$11:I$60)","v":6.5480195452288754},{"$f":"_xlfn.XLOOKUP($E27,Assets!$C$11:$C$60,Assets!J$11:J$60)","v":6.2943530670669521},{"$f":"_xlfn.XLOOKUP($E27,Assets!$C$11:$C$60,Assets!K$11:K$60)","v":6.1423938755225329},null,"Plant & Equipment",{"$f":"_xlfn.XLOOKUP($L27,Assets!$C$128:$C$765,Assets!G$128:G$765)","v":9.2947054392793262},{"$f":"_xlfn.XLOOKUP($L27,Assets!$C$128:$C$765,Assets!H$128:H$765)","v":8.1188609609720874},{"$f":"_xlfn.XLOOKUP($L27,Assets!$C$128:$C$765,Assets!I$128:I$765)","v":7.1549958674238265},{"$f":"_xlfn.XLOOKUP($L27,Assets!$C$128:$C$765,Assets!J$128:J$765)","v":7.1637362427238287},{"$f":"_xlfn.XLOOKUP($L27,Assets!$C$128:$C$765,Assets!K$128:K$765)","v":6.9953617736071703},null,"Plant & Equipment",41.384902151101194,38.897799513877388,37.180573165417641,36.573596843222688,35.70421366756581,null,"Plant & Equipment",2.5479548753378012E-3,2.3269100425769842E-3,2.1654554727384913E-3,2.0769199654964085E-3,1.977423466873832E-3,null,"Plant & Equipment",{"$f":"T27*'PTRM Revenue data'!J$7","v":1.1586866802038447},{"$f":"U27*'PTRM Revenue data'!K$7*'PTRM Revenue data'!J$8","v":1.1195443573006212},{"$f":"V27*'PTRM Revenue data'!L$7*'PTRM Revenue data'!K$8","v":1.0701196830863338},{"$f":"W27*'PTRM Revenue data'!M$7*'PTRM Revenue data'!L$8","v":1.052649879523641},{"$f":"X27*'PTRM Revenue data'!N$7*'PTRM Revenue data'!M$8","v":1.0276275635879668},null,"Plant & Equipment",{"$f":"M27*'PTRM Revenue data'!J$8","v":9.5549368480570944},{"$f":"N27*'PTRM Revenue data'!K$8","v":8.3461712979533971},{"$f":"O27*'PTRM Revenue data'!L$8","v":7.3553200914180819},{"$f":"P27*'PTRM Revenue data'!M$8","v":7.3643051780962363},{"$f":"Q27*'PTRM Revenue data'!N$8","v":7.1912165923691402},null,"Plant & Equipment",8.3962501678532497,7.2266269406527757,6.2852004083317485,6.3116552985725951,6.163589028781173]
[null,"Buildings",{"$f":"_xlfn.XLOOKUP(B28,'PTRM Input'!$G$6:$G$58,'PTRM Input'!$J$6:$J$58)","v":411.75057144678505},null,"Buildings",{"$f":"_xlfn.XLOOKUP($E28,Assets!$C$11:$C$60,Assets!G$11:G$60)","v":30.508478163441143},{"$f":"_xlfn.XLOOKUP($E28,Assets!$C$11:$C$60,Assets!H$11:H$60)","v":24.814504095066454},{"$f":"_xlfn.XLOOKUP($E28,Assets!$C$11:$C$60,Assets!I$11:I$60)","v":29.851272424132599},{"$f":"_xlfn.XLOOKUP($E28,Assets!$C$11:$C$60,Assets!J$11:J$60)","v":33.723447419473814},{"$f":"_xlfn.XLOOKUP($E28,Assets!$C$11:$C$60,Assets!K$11:K$60)","v":31.580450481139582},null,"Buildings",{"$f":"_xlfn.XLOOKUP($L28,Assets!$C$128:$C$765,Assets!G$128:G$765)","v":13.036965272421174},{"$f":"_xlfn.XLOOKUP($L28,Assets!$C$128:$C$765,Assets!H$128:H$765)","v":13.799677226507203},{"$f":"_xlfn.XLOOKUP($L28,Assets!$C$128:$C$765,Assets!I$128:I$765)","v":14.420039828883864},{"$f":"_xlfn.XLOOKUP($L28,Assets!$C$128:$C$765,Assets!J$128:J$765)","v":15.16632163948718},{"$f":"_xlfn.XLOOKUP($L28,Assets!$C$128:$C$765,Assets!K$128:K$765)","v":16.009407824974026},null,"Buildings",411.75057144678505,429.22208433780503,440.23691120636431,455.66814380161304,474.22526958159966,null,"Buildings",2.5350352940560133E-2,2.5676547028968578E-2,2.5640095014995784E-2,2.5876215280631602E-2,2.6264243917716746E-2,null,"Buildings",{"$f":"T28*'PTRM Revenue data'!J$7","v":11.528114793162962},{"$f":"U28*'PTRM Revenue data'!K$7*'PTRM Revenue data'!J$8","v":12.353736420944928},{"$f":"V28*'PTRM Revenue data'!L$7*'PTRM Revenue data'!K$8","v":12.670761739123641},{"$f":"W28*'PTRM Revenue data'!M$7*'PTRM Revenue data'!L$8","v":13.114898672166364},{"$f":"X28*'PTRM Revenue data'!N$7*'PTRM Revenue data'!M$8","v":13.649004089808045},null,"Buildings",{"$f":"M28*'PTRM Revenue data'!J$8","v":13.401971765762189},{"$f":"N28*'PTRM Revenue data'!K$8","v":14.18603798519854},{"$f":"O28*'PTRM Revenue data'!L$8","v":14.823769382640755},{"$f":"P28*'PTRM Revenue data'!M$8","v":15.590945450537886},{"$f":"Q28*'PTRM Revenue data'!N$8","v":16.457636203937465},null,"Buildings",1.8738569725992278,1.832301564253612,2.1530076435171139,2.4760467783715221,2.8086321141294199]
[null,"Office Equipment & Furniture",{"$f":"_xlfn.XLOOKUP(B29,'PTRM Input'!$G$6:$G$58,'PTRM Input'!$J$6:$J$58)","v":-9.7819351273368493},null,"Office Equipment & Furniture",{"$f":"_xlfn.XLOOKUP($E29,Assets!$C$11:$C$60,Assets!G$11:G$60)","v":1.878441330657735},{"$f":"_xlfn.XLOOKUP($E29,Assets!$C$11:$C$60,Assets!H$11:H$60)","v":1.5278569400359392},{"$f":"_xlfn.XLOOKUP($E29,Assets!$C$11:$C$60,Assets!I$11:I$60)","v":1.8379764337576339},{"$f":"_xlfn.XLOOKUP($E29,Assets!$C$11:$C$60,Assets!J$11:J$60)","v":2.0763906054453094},{"$f":"_xlfn.XLOOKUP($E29,Assets!$C$11:$C$60,Assets!K$11:K$60)","v":1.9444438725117792},null,"Office Equipment & Furniture",{"$f":"_xlfn.XLOOKUP($L29,Assets!$C$128:$C$765,Assets!G$128:G$765)","v":-2.4041090306070969},{"$f":"_xlfn.XLOOKUP($L29,Assets!$C$128:$C$765,Assets!H$128:H$765)","v":-1.3793412588419727},{"$f":"_xlfn.XLOOKUP($L29,Assets!$C$128:$C$765,Assets!I$128:I$765)","v":-0.78103908887497131},{"$f":"_xlfn.XLOOKUP($L29,Assets!$C$128:$C$765,Assets!J$128:J$765)","v":-0.51847102690959512},{"$f":"_xlfn.XLOOKUP($L29,Assets!$C$128:$C$765,Assets!K$128:K$765)","v":-0.22184379756026523},null,"Office Equipment & Furniture",-9.7819351273368493,-5.4993847660720174,-2.5921865671941058,2.6828955438499391E-2,2.6216905877934042,null,"Office Equipment & Furniture",-6.0224690653938953E-4,-3.2897937158636657E-4,-1.5097305152656128E-4,1.5235469850693231E-6,1.451983381976654E-4,null,"Office Equipment & Furniture",{"$f":"T29*'PTRM Revenue data'!J$7","v":-0.27387277363326373},{"$f":"U29*'PTRM Revenue data'!K$7*'PTRM Revenue data'!J$8","v":-0.1582815804602106},{"$f":"V29*'PTRM Revenue data'!L$7*'PTRM Revenue data'!K$8","v":-7.4607506867766932E-2},{"$f":"W29*'PTRM Revenue data'!M$7*'PTRM Revenue data'!L$8","v":7.7218264397516698E-4},{"$f":"X29*'PTRM Revenue data'!N$7*'PTRM Revenue data'!M$8","v":7.5456682404492131E-2},null,{"$f":"B29","v":"Office Equipment & Furniture"},{"$f":"M29*'PTRM Revenue data'!J$8","v":-2.4714188215388631},{"$f":"N29*'PTRM Revenue data'!K$8","v":-1.4179597950956164},{"$f":"O29*'PTRM Revenue data'!L$8","v":-0.80290647388638892},{"$f":"P29*'PTRM Revenue data'!M$8","v":-0.53298708087435653},{"$f":"Q29*'PTRM Revenue data'!N$8","v":-0.22805493833765325},null,{"$f":"B29","v":"Office Equipment & Furniture"},{"$f":"AO29-AH29","v":-2.1975460479055995},{"$f":"AP29-AI29","v":-1.2596782146354057},{"$f":"AQ29-AJ29","v":-0.72829896701862196},{"$f":"AR29-AK29","v":-0.53375926351833169},{"$f":"AS29-AL29","v":-0.30351162074214538}]
[null,"Initial Leases (10 yr life)",{"$f":"_xlfn.XLOOKUP(B30,'PTRM Input'!$G$6:$G$58,'PTRM Input'!$J$6:$J$58)","v":53.601926054762309},null,"Initial Leases (10 yr life)",{"$f":"_xlfn.XLOOKUP($E30,Assets!$C$11:$C$60,Assets!G$11:G$60)","v":0},{"$f":"_xlfn.XLOOKUP($E30,Assets!$C$11:$C$60,Assets!H$11:H$60)","v":0},{"$f":"_xlfn.XLOOKUP($E30,Assets!$C$11:$C$60,Assets!I$11:I$60)","v":0},{"$f":"_xlfn.XLOOKUP($E30,Assets!$C$11:$C$60,Assets!J$11:J$60)","v":0},{"$f":"_xlfn.XLOOKUP($E30,Assets!$C$11:$C$60,Assets!K$11:K$60)","v":0},null,"Initial Leases (10 yr life)",{"$f":"_xlfn.XLOOKUP($L30,Assets!$C$128:$C$765,Assets!G$128:G$765)","v":12.371019656988214},{"$f":"_xlfn.XLOOKUP($L30,Assets!$C$128:$C$765,Assets!H$128:H$765)","v":12.371019656988214},{"$f":"_xlfn.XLOOKUP($L30,Assets!$C$128:$C$765,Assets!I$128:I$765)","v":12.371019656988214},{"$f":"_xlfn.XLOOKUP($L30,Assets!$C$128:$C$765,Assets!J$128:J$765)","v":12.371019656988214},{"$f":"_xlfn.XLOOKUP($L30,Assets!$C$128:$C$765,Assets!K$128:K$765)","v":4.1178474268094547},null,"Initial Leases (10 yr life)",53.601926054762309,41.230906397774092,28.859886740785878,16.488867083797665,4.1178474268094512,null,"Initial Leases (10 yr life)",3.3001235165441571E-3,2.4664791160565235E-3,1.6808455159474359E-3,9.3636011250290566E-4,2.2806070483988834E-4,null,"Initial Leases (10 yr life)",{"$f":"T30*'PTRM Revenue data'!J$7","v":1.5007366098429182},{"$f":"U30*'PTRM Revenue data'!K$7*'PTRM Revenue data'!J$8","v":1.1866951133713832},{"$f":"V30*'PTRM Revenue data'!L$7*'PTRM Revenue data'!K$8","v":0.83063627651879857},{"$f":"W30*'PTRM Revenue data'!M$7*'PTRM Revenue data'!L$8","v":0.47457743966621374},{"$f":"X30*'PTRM Revenue data'!N$7*'PTRM Revenue data'!M$8","v":0.11851860281362897},null,"Initial Leases (10 yr life)",{"$f":"M30*'PTRM Revenue data'!J$8","v":12.717381130666622},{"$f":"N30*'PTRM Revenue data'!K$8","v":12.717381130666622},{"$f":"O30*'PTRM Revenue data'!L$8","v":12.717381130666622},{"$f":"P30*'PTRM Revenue data'!M$8","v":12.717381130666622},{"$f":"Q30*'PTRM Revenue data'!N$8","v":4.2331381419387357},null,"Initial Leases (10 yr life)",11.216644520823703,11.530686017295238,11.886744854147823,12.242803691000407,4.1146195391251066]
[null,"Lease Extensions (5yr Life)",{"$f":"_xlfn.XLOOKUP(B31,'PTRM Input'!$G$6:$G$58,'PTRM Input'!$J$6:$J$58)","v":0},null,"Lease Extensions (5yr Life)",{"$f":"_xlfn.XLOOKUP($E31,Assets!$C$11:$C$60,Assets!G$11:G$60)","v":0},{"$f":"_xlfn.XLOOKUP($E31,Assets!$C$11:$C$60,Assets!H$11:H$60)","v":0},{"$f":"_xlfn.XLOOKUP($E31,Assets!$C$11:$C$60,Assets!I$11:I$60)","v":0},{"$f":"_xlfn.XLOOKUP($E31,Assets!$C$11:$C$60,Assets!J$11:J$60)","v":14.97270912134128},{"$f":"_xlfn.XLOOKUP($E31,Assets!$C$11:$C$60,Assets!K$11:K$60)","v":2.5851737216614028},null,"Lease Extensions (5yr Life)",{"$f":"_xlfn.XLOOKUP($L31,Assets!$C$128:$C$765,Assets!G$128:G$765)","v":0},{"$f":"_xlfn.XLOOKUP($L31,Assets!$C$128:$C$765,Assets!H$128:H$765)","v":0},{"$f":"_xlfn.XLOOKUP($L31,Assets!$C$128:$C$765,Assets!I$128:I$765)","v":0},{"$f":"_xlfn.XLOOKUP($L31,Assets!$C$128:$C$765,Assets!J$128:J$765)","v":0},{"$f":"_xlfn.XLOOKUP($L31,Assets!$C$128:$C$765,Assets!K$128:K$765)","v":2.9945418242682562},null,"Lease Extensions (5yr Life)",{"$f":"_xlfn.XLOOKUP(S31,$B$7:$B$37,C$7:C$37)","v":0},0,0,0,14.97270912134128,null,"Lease Extensions (5yr Life)",{"$f":"T31/T$40","v":0},0,0,0,8.2924067884211302E-4,null,"Lease Extensions (5yr Life)",{"$f":"T31*'PTRM Revenue data'!J$7","v":0},{"$f":"U31*'PTRM Revenue data'!K$7*'PTRM Revenue data'!J$8","v":0},{"$f":"V31*'PTRM Revenue data'!L$7*'PTRM Revenue data'!K$8","v":0},{"$f":"W31*'PTRM Revenue data'!M$7*'PTRM Revenue data'!L$8","v":0},{"$f":"X31*'PTRM Revenue data'!N$7*'PTRM Revenue data'!M$8","v":0.43093985314827005},null,"Lease Extensions (5yr Life)",{"$f":"M31*'PTRM Revenue data'!J$8","v":0},{"$f":"N31*'PTRM Revenue data'!K$8","v":0},{"$f":"O31*'PTRM Revenue data'!L$8","v":0},{"$f":"P31*'PTRM Revenue data'!M$8","v":0},{"$f":"Q31*'PTRM Revenue data'!N$8","v":3.0783824411295582},null,"Lease Extensions (5yr Life)",0,0,0,0,2.647442587981288]
[null,"Land & Easements - combined",{"$f":"_xlfn.XLOOKUP(B32,'PTRM Input'!$G$6:$G$58,'PTRM Input'!$J$6:$J$58)","v":33.850432297626618},null,"Land & Easements - combined",{"$f":"_xlfn.XLOOKUP($E32,Assets!$C$11:$C$60,Assets!G$11:G$60)","v":0},{"$f":"_xlfn.XLOOKUP($E32,Assets!$C$11:$C$60,Assets!H$11:H$60)","v":0},{"$f":"_xlfn.XLOOKUP($E32,Assets!$C$11:$C$60,Assets!I$11:I$60)","v":-4.3508967841194686},{"$f":"_xlfn.XLOOKUP($E32,Assets!$C$11:$C$60,Assets!J$11:J$60)","v":0},{"$f":"_xlfn.XLOOKUP($E32,Assets!$C$11:$C$60,Assets!K$11:K$60)","v":-2.4300252569676877},null,"Land & Easements - combined",{"$f":"_xlfn.XLOOKUP($L32,Assets!$C$128:$C$765,Assets!G$128:G$765)","v":0},{"$f":"_xlfn.XLOOKUP($L32,Assets!$C$128:$C$765,Assets!H$128:H$765)","v":0},{"$f":"_xlfn.XLOOKUP($L32,Assets!$C$128:$C$765,Assets!I$128:I$765)","v":0},{"$f":"_xlfn.XLOOKUP($L32,Assets!$C$128:$C$765,Assets!J$128:J$765)","v":0},{"$f":"_xlfn.XLOOKUP($L32,Assets!$C$128:$C$765,Assets!K$128:K$765)","v":0},null,"Land & Easements - combined",33.850432297626618,33.850432297626618,33.850432297626618,29.499535513507148,29.499535513507148,null,"Land & Easements - combined",2.0840782392120487E-3,2.0249708683602622E-3,1.9715027938740481E-3,1.6752023199552142E-3,1.6337868221777303E-3,null,"Land & Easements - combined",{"$f":"T32*'PTRM Revenue data'!J$7","v":0.94773801516305733},{"$f":"U32*'PTRM Revenue data'!K$7*'PTRM Revenue data'!J$8","v":0.97427260525300985},{"$f":"V32*'PTRM Revenue data'!L$7*'PTRM Revenue data'!K$8","v":0.97427260525300985},{"$f":"W32*'PTRM Revenue data'!M$7*'PTRM Revenue data'!L$8","v":0.84904644838209065},{"$f":"X32*'PTRM Revenue data'!N$7*'PTRM Revenue data'!M$8","v":0.84904644838209065},null,"Land & Easements - combined",{"$f":"M32*'PTRM Revenue data'!J$8","v":0},{"$f":"N32*'PTRM Revenue data'!K$8","v":0},{"$f":"O32*'PTRM Revenue data'!L$8","v":0},{"$f":"P32*'PTRM Revenue data'!M$8","v":0},{"$f":"Q32*'PTRM Revenue data'!N$8","v":0},null,"Land & Easements - combined",-0.94773801516305733,-0.97427260525300985,-0.97427260525300985,-0.84904644838209065,-0.84904644838209065]
[null,"Communications",{"$f":"_xlfn.XLOOKUP(B33,'PTRM Input'!$G$6:$G$58,'PTRM Input'!$J$6:$J$58)","v":168.7162641145087},null,"Communications",{"$f":"_xlfn.XLOOKUP($E33,Assets!$C$11:$C$60,Assets!G$11:G$60)","v":0},{"$f":"_xlfn.XLOOKUP($E33,Assets!$C$11:$C$60,Assets!H$11:H$60)","v":0},{"$f":"_xlfn.XLOOKUP($E33,Assets!$C$11:$C$60,Assets!I$11:I$60)","v":0},{"$f":"_xlfn.XLOOKUP($E33,Assets!$C$11:$C$60,Assets!J$11:J$60)","v":0},{"$f":"_xlfn.XLOOKUP($E33,Assets!$C$11:$C$60,Assets!K$11:K$60)","v":0},null,"Communications",{"$f":"_xlfn.XLOOKUP($L33,Assets!$C$128:$C$765,Assets!G$128:G$765)","v":8.0322751714063898},{"$f":"_xlfn.XLOOKUP($L33,Assets!$C$128:$C$765,Assets!H$128:H$765)","v":8.0322751714063898},{"$f":"_xlfn.XLOOKUP($L33,Assets!$C$128:$C$765,Assets!I$128:I$765)","v":8.0322751714063898},{"$f":"_xlfn.XLOOKUP($L33,Assets!$C$128:$C$765,Assets!J$128:J$765)","v":8.0322751714063898},{"$f":"_xlfn.XLOOKUP($L33,Assets!$C$128:$C$765,Assets!K$128:K$765)","v":8.0322751714063898},null,"Communications",168.7162641145087,160.68398894310232,152.65171377169594,144.61943860028956,136.58716342888317,null,"Communications",1.0387397465138238E-2,9.6122966395474473E-3,8.8906776003466591E-3,8.2125638535188936E-3,7.5646719110735901E-3,null,"Communications",{"$f":"T33*'PTRM Revenue data'!J$7","v":4.7236861222839313},{"$f":"U33*'PTRM Revenue data'!K$7*'PTRM Revenue data'!J$8","v":4.6247565512189466},{"$f":"V33*'PTRM Revenue data'!L$7*'PTRM Revenue data'!K$8","v":4.3935741075636008},{"$f":"W33*'PTRM Revenue data'!M$7*'PTRM Revenue data'!L$8","v":4.162391663908255},{"$f":"X33*'PTRM Revenue data'!N$7*'PTRM Revenue data'!M$8","v":3.9312092202529092},null,"Communications",{"$f":"M33*'PTRM Revenue data'!J$8","v":8.2571612957920433},{"$f":"N33*'PTRM Revenue data'!K$8","v":8.2571612957920433},{"$f":"O33*'PTRM Revenue data'!L$8","v":8.2571612957920433},{"$f":"P33*'PTRM Revenue data'!M$8","v":8.2571612957920433},{"$f":"Q33*'PTRM Revenue data'!N$8","v":8.2571612957920433},null,"Communications",3.533475173508112,3.6324047445730967,3.8635871882284425,4.0947696318837883,4.3259520755391341]
[null,"In-house software",{"$f":"_xlfn.XLOOKUP(B34,'PTRM Input'!$G$6:$G$58,'PTRM Input'!$J$6:$J$58)","v":188.87940044100932},null,"In-house software",{"$f":"_xlfn.XLOOKUP($E34,Assets!$C$11:$C$60,Assets!G$11:G$60)","v":78.581942908359721},{"$f":"_xlfn.XLOOKUP($E34,Assets!$C$11:$C$60,Assets!H$11:H$60)","v":64.546429973372483},{"$f":"_xlfn.XLOOKUP($E34,Assets!$C$11:$C$60,Assets!I$11:I$60)","v":49.026028344772712},{"$f":"_xlfn.XLOOKUP($E34,Assets!$C$11:$C$60,Assets!J$11:J$60)","v":38.28867283812292},{"$f":"_xlfn.XLOOKUP($E34,Assets!$C$11:$C$60,Assets!K$11:K$60)","v":48.099143274762461},null,"In-house software",{"$f":"_xlfn.XLOOKUP($L34,Assets!$C$128:$C$765,Assets!G$128:G$765)","v":65.794801238548615},{"$f":"_xlfn.XLOOKUP($L34,Assets!$C$128:$C$765,Assets!H$128:H$765)","v":64.499369239671665},{"$f":"_xlfn.XLOOKUP($L34,Assets!$C$128:$C$765,Assets!I$128:I$765)","v":62.574073379896902},{"$f":"_xlfn.XLOOKUP($L34,Assets!$C$128:$C$765,Assets!J$128:J$765)","v":66.072975355329106},{"$f":"_xlfn.XLOOKUP($L34,Assets!$C$128:$C$765,Assets!K$128:K$765)","v":58.799739443807965},null,"In-house software",188.87940044100932,201.66654211082042,201.7136028445212,188.165557809397,160.38125529219081,null,"In-house software",1.1628786446019059E-2,1.2063918986523304E-2,1.1748119730756186E-2,1.068543532943558E-2,8.8824714308036092E-3,null,"In-house software",{"$f":"T34*'PTRM Revenue data'!J$7","v":5.2882098079350497},{"$f":"U34*'PTRM Revenue data'!K$7*'PTRM Revenue data'!J$8","v":5.8043036392315335},{"$f":"V34*'PTRM Revenue data'!L$7*'PTRM Revenue data'!K$8","v":5.8056581266196021},{"$f":"W34*'PTRM Revenue data'!M$7*'PTRM Revenue data'!L$8","v":5.4157225117240424},{"$f":"X34*'PTRM Revenue data'!N$7*'PTRM Revenue data'!M$8","v":4.6160433655149049},null,"In-house software",{"$f":"M34*'PTRM Revenue data'!J$8","v":67.636911666728935},{"$f":"N34*'PTRM Revenue data'!K$8","v":66.305210407223356},{"$f":"O34*'PTRM Revenue data'!L$8","v":64.326010477311428},{"$f":"P34*'PTRM Revenue data'!M$8","v":67.922874049933597},{"$f":"Q34*'PTRM Revenue data'!N$8","v":60.446003451978008},null,"In-house software",62.348701858793888,60.500906767991822,58.520352350691823,62.507151538209555,55.829960086463103]
[null,"IT Systems",{"$f":"_xlfn.XLOOKUP(B35,'PTRM Input'!$G$6:$G$58,'PTRM Input'!$J$6:$J$58)","v":7.4007413193786009},null,"IT Systems",{"$f":"_xlfn.XLOOKUP($E35,Assets!$C$11:$C$60,Assets!G$11:G$60)","v":3.3383796953883511},{"$f":"_xlfn.XLOOKUP($E35,Assets!$C$11:$C$60,Assets!H$11:H$60)","v":3.1575972410977897},{"$f":"_xlfn.XLOOKUP($E35,Assets!$C$11:$C$60,Assets!I$11:I$60)","v":2.4519865828204659},{"$f":"_xlfn.XLOOKUP($E35,Assets!$C$11:$C$60,Assets!J$11:J$60)","v":1.8513874375798574},{"$f":"_xlfn.XLOOKUP($E35,Assets!$C$11:$C$60,Assets!K$11:K$60)","v":2.3272092770145916},null,"IT Systems",{"$f":"_xlfn.XLOOKUP($L35,Assets!$C$128:$C$765,Assets!G$128:G$765)","v":2.0913321305095214},{"$f":"_xlfn.XLOOKUP($L35,Assets!$C$128:$C$765,Assets!H$128:H$765)","v":2.9490598750682246},{"$f":"_xlfn.XLOOKUP($L35,Assets!$C$128:$C$765,Assets!I$128:I$765)","v":3.5805793232877821},{"$f":"_xlfn.XLOOKUP($L35,Assets!$C$128:$C$765,Assets!J$128:J$765)","v":2.4182122952990879},{"$f":"_xlfn.XLOOKUP($L35,Assets!$C$128:$C$765,Assets!K$128:K$765)","v":2.2778919168274974},null,"IT Systems",7.4007413193786009,8.6477888842574302,8.8563262502869957,7.7277335098196787,7.1609086521004484,null,"IT Systems",4.5564333720003405E-4,5.1732044106210105E-4,5.1580646865550042E-4,4.3883799789722538E-4,3.9659601369870128E-4,null,"IT Systems",{"$f":"T35*'PTRM Revenue data'!J$7","v":0.20720455878062383},{"$f":"U35*'PTRM Revenue data'!K$7*'PTRM Revenue data'!J$8","v":0.24889796773833922},{"$f":"V35*'PTRM Revenue data'!L$7*'PTRM Revenue data'!K$8","v":0.25490002529281452},{"$f":"W35*'PTRM Revenue data'!M$7*'PTRM Revenue data'!L$8","v":0.22241722035085754},{"$f":"X35*'PTRM Revenue data'!N$7*'PTRM Revenue data'!M$8","v":0.20610304374014995},null,"IT Systems",{"$f":"M35*'PTRM Revenue data'!J$8","v":2.1498848528200956},{"$f":"N35*'PTRM Revenue data'!K$8","v":3.031627096899248},{"$f":"O35*'PTRM Revenue data'!L$8","v":3.6808277074487306},{"$f":"P35*'PTRM Revenue data'!M$8","v":2.4859169467741107},{"$f":"Q35*'PTRM Revenue data'!N$8","v":2.3416679048275508},null,"IT Systems",1.9426802940394716,2.7827291291609089,3.4259276821559159,2.263499726423253,2.135564861087401]
[null,"Legacy ICT Assets",{"$f":"_xlfn.XLOOKUP(B36,'PTRM Input'!$G$6:$G$58,'PTRM Input'!$J$6:$J$58)","v":80.317017074383813},null,"Legacy ICT Assets",{"$f":"_xlfn.XLOOKUP($E36,Assets!$C$11:$C$60,Assets!G$11:G$60)","v":0},{"$f":"_xlfn.XLOOKUP($E36,Assets!$C$11:$C$60,Assets!H$11:H$60)","v":0},{"$f":"_xlfn.XLOOKUP($E36,Assets!$C$11:$C$60,Assets!I$11:I$60)","v":0},{"$f":"_xlfn.XLOOKUP($E36,Assets!$C$11:$C$60,Assets!J$11:J$60)","v":0},{"$f":"_xlfn.XLOOKUP($E36,Assets!$C$11:$C$60,Assets!K$11:K$60)","v":0},null,"Legacy ICT Assets",{"$f":"_xlfn.XLOOKUP($L36,Assets!$C$128:$C$765,Assets!G$128:G$765)","v":16.06340341487676},{"$f":"_xlfn.XLOOKUP($L36,Assets!$C$128:$C$765,Assets!H$128:H$765)","v":16.06340341487676},{"$f":"_xlfn.XLOOKUP($L36,Assets!$C$128:$C$765,Assets!I$128:I$765)","v":16.06340341487676},{"$f":"_xlfn.XLOOKUP($L36,Assets!$C$128:$C$765,Assets!J$128:J$765)","v":16.06340341487676},{"$f":"_xlfn.XLOOKUP($L36,Assets!$C$128:$C$765,Assets!K$128:K$765)","v":16.06340341487676},null,"Legacy ICT Assets",80.317017074383813,64.253613659507053,48.190210244630293,32.126806829753534,16.063403414876774,null,"Legacy ICT Assets",4.9448983709103767E-3,3.8437233150638208E-3,2.8066741747734699E-3,1.8243982624510722E-3,8.8964712025834552E-4,null,"Legacy ICT Assets",{"$f":"T36*'PTRM Revenue data'!J$7","v":2.2487006864970209},{"$f":"U36*'PTRM Revenue data'!K$7*'PTRM Revenue data'!J$8","v":1.849327507151437},{"$f":"V36*'PTRM Revenue data'!L$7*'PTRM Revenue data'!K$8","v":1.3869956303635778},{"$f":"W36*'PTRM Revenue data'!M$7*'PTRM Revenue data'!L$8","v":0.92466375357571862},{"$f":"X36*'PTRM Revenue data'!N$7*'PTRM Revenue data'!M$8","v":0.46233187678785953},null,"Legacy ICT Assets",{"$f":"M36*'PTRM Revenue data'!J$8","v":16.513143552176164},{"$f":"N36*'PTRM Revenue data'!K$8","v":16.513143552176164},{"$f":"O36*'PTRM Revenue data'!L$8","v":16.513143552176164},{"$f":"P36*'PTRM Revenue data'!M$8","v":16.513143552176164},{"$f":"Q36*'PTRM Revenue data'!N$8","v":16.513143552176164},null,"Legacy ICT Assets",14.264442865679143,14.663816045024728,15.126147921812587,15.588479798600446,16.050811675388303]
[null,"Buildings - capital works",{"$f":"_xlfn.XLOOKUP(B37,'PTRM Input'!$G$6:$G$58,'PTRM Input'!$J$6:$J$58)","v":84.594261180599446},null,"Buildings - capital works",{"$f":"_xlfn.XLOOKUP($E37,Assets!$C$11:$C$60,Assets!G$11:G$60)","v":0},{"$f":"_xlfn.XLOOKUP($E37,Assets!$C$11:$C$60,Assets!H$11:H$60)","v":0},{"$f":"_xlfn.XLOOKUP($E37,Assets!$C$11:$C$60,Assets!I$11:I$60)","v":0},{"$f":"_xlfn.XLOOKUP($E37,Assets!$C$11:$C$60,Assets!J$11:J$60)","v":0},{"$f":"_xlfn.XLOOKUP($E37,Assets!$C$11:$C$60,Assets!K$11:K$60)","v":0},null,"Buildings - capital works",{"$f":"_xlfn.XLOOKUP($L37,Assets!$C$128:$C$765,Assets!G$128:G$765)","v":2.319536436824464},{"$f":"_xlfn.XLOOKUP($L37,Assets!$C$128:$C$765,Assets!H$128:H$765)","v":2.319536436824464},{"$f":"_xlfn.XLOOKUP($L37,Assets!$C$128:$C$765,Assets!I$128:I$765)","v":2.319536436824464},{"$f":"_xlfn.XLOOKUP($L37,Assets!$C$128:$C$765,Assets!J$128:J$765)","v":2.319536436824464},{"$f":"_xlfn.XLOOKUP($L37,Assets!$C$128:$C$765,Assets!K$128:K$765)","v":2.319536436824464},null,"Buildings - capital works",84.594261180599446,82.274724743774982,79.955188306950518,77.635651870126054,75.31611543330159,null,"Buildings - capital works",5.2082365548125949E-3,4.9217664147877017E-3,4.6567168107608109E-3,4.4087278616478957E-3,4.1712682844176644E-3,null,"Buildings - capital works",{"$f":"T37*'PTRM Revenue data'!J$7","v":2.3684541597747288},{"$f":"U37*'PTRM Revenue data'!K$7*'PTRM Revenue data'!J$8","v":2.3680055166743648},{"$f":"V37*'PTRM Revenue data'!L$7*'PTRM Revenue data'!K$8","v":2.3012453409869571},{"$f":"W37*'PTRM Revenue data'!M$7*'PTRM Revenue data'!L$8","v":2.234485165299549},{"$f":"X37*'PTRM Revenue data'!N$7*'PTRM Revenue data'!M$8","v":2.1677249896121418},null,"Buildings - capital works",{"$f":"M37*'PTRM Revenue data'!J$8","v":2.3844783802361746},{"$f":"N37*'PTRM Revenue data'!K$8","v":2.3844783802361746},{"$f":"O37*'PTRM Revenue data'!L$8","v":2.3844783802361746},{"$f":"P37*'PTRM Revenue data'!M$8","v":2.3844783802361746},{"$f":"Q37*'PTRM Revenue data'!N$8","v":2.3844783802361746},null,"Buildings - capital works",1.6024220461445804E-2,1.6472863561809881E-2,8.3233039249217544E-2,0.14999321493662565,0.21675339062403287]
[]
[]
[null,"Total",{"$f":"SUM(C7:C37)","v":16242.399954439732},null,null,null,null,null,null,null,null,null,null,null,null,null,null,null,"Total",{"$f":"SUM(T7:T37)","v":16242.399954439732},{"$f":"SUM(U7:U37)","v":16716.503346557918},{"$f":"SUM(V7:V37)","v":17169.862707173619},{"$f":"SUM(W7:W37)","v":17609.535971927144},{"$f":"SUM(X7:X37)","v":18055.926950240795},null,"Total",{"$f":"SUM(AA7:AA37)","v":1.0000000000000002},{"$f":"SUM(AB7:AB37)","v":0.99999999999999978},1.0000000000000002,1,1.0000000000000002]

{"sheet":"BBM Costs","index":6,"n_rows":37,"n_cols":31,"rows_kept":37,"cut":false,"hidden":false,"merged":[[3,1,3,6],[3,8,3,13],[3,15,3,20],[3,22,3,27]]}
[]
[null,"BBM Costs"]
[]
[null,"Building block costs by year (000s)",null,null,null,null,null,null,"Operational costs",null,null,null,null,null,null,"Return of capex (Regulatory depreciation split)",null,null,null,null,null,null,"Return on capex",null,null,null,null,null,null,"Replacement cost (ORAB)"]
[]
[null,null,"2025-26","2026-27","2027-28","2028-29","2029-30",null,"Category","2025-26","2026-27","2027-28","2028-29","2029-30",null,"Category","2025-26","2026-27","2027-28","2028-29","2029-30",null,"Category","2025-26","2026-27","2027-28","2028-29","2029-30",null,"Category","2025-26"]
[null,"Return on Capital",{"$f":"_xlfn.XLOOKUP($B7,'PTRM Revenue data'!$B$7:$B$11,'PTRM Revenue data'!C$7:C$11)","v":955.44060250252642},{"$f":"_xlfn.XLOOKUP($B7,'PTRM Revenue data'!$B$7:$B$11,'PTRM Revenue data'!D$7:D$11)","v":1044.8628085046209},{"$f":"_xlfn.XLOOKUP($B7,'PTRM Revenue data'!$B$7:$B$11,'PTRM Revenue data'!E$7:E$11)","v":1139.825304898493},{"$f":"_xlfn.XLOOKUP($B7,'PTRM Revenue data'!$B$7:$B$11,'PTRM Revenue data'!F$7:F$11)","v":1197.9900697392854},{"$f":"_xlfn.XLOOKUP($B7,'PTRM Revenue data'!$B$7:$B$11,'PTRM Revenue data'!G$7:G$11)","v":1302.480765624442},null,{"$f":"'Opex costs'!B7","v":"Preventative Maintenance"},{"$f":"_xlfn.XLOOKUP($I7,'Opex costs'!$B$7:$B$20,'Opex costs'!C$7:C$20)","v":79.890880951538819},{"$f":"_xlfn.XLOOKUP($I7,'Opex costs'!$B$7:$B$20,'Opex costs'!D$7:D$20)","v":83.028270247062451},{"$f":"_xlfn.XLOOKUP($I7,'Opex costs'!$B$7:$B$20,'Opex costs'!E$7:E$20)","v":86.006314628071863},{"$f":"_xlfn.XLOOKUP($I7,'Opex costs'!$B$7:$B$20,'Opex costs'!F$7:F$20)","v":87.396571402892022},{"$f":"_xlfn.XLOOKUP($I7,'Opex costs'!$B$7:$B$20,'Opex costs'!G$7:G$20)","v":90.867551422662174},null,{"$f":"'PTRM Data'!B7","v":"Overhead Sub-Transmission Lines"},{"$f":"_xlfn.XLOOKUP($P7,'PTRM Data'!$AU$7:$AU$37,'PTRM Data'!AV$7:AV$37)","v":13.412916760462174},{"$f":"_xlfn.XLOOKUP($P7,'PTRM Data'!$AU$7:$AU$37,'PTRM Data'!AW$7:AW$37)","v":12.985960661192799},{"$f":"_xlfn.XLOOKUP($P7,'PTRM Data'!$AU$7:$AU$37,'PTRM Data'!AX$7:AX$37)","v":13.800650459336389},{"$f":"_xlfn.XLOOKUP($P7,'PTRM Data'!$AU$7:$AU$37,'PTRM Data'!AY$7:AY$37)","v":14.629296824635226},{"$f":"_xlfn.XLOOKUP($P7,'PTRM Data'!$AU$7:$AU$37,'PTRM Data'!AZ$7:AZ$37)","v":15.477942780180953},null,{"$f":"'PTRM Data'!B7","v":"Overhead Sub-Transmission Lines"},{"$f":"_xlfn.XLOOKUP($W7,'PTRM Data'!$Z$7:$Z$37,'PTRM Data'!AA$7:AA$37)*('BBM Costs'!C$7+'BBM Costs'!C$11)","v":92.972129046993814},{"$f":"_xlfn.XLOOKUP($W7,'PTRM Data'!$Z$7:$Z$37,'PTRM Data'!AB$7:AB$37)*('BBM Costs'!D$7+'BBM Costs'!D$11)","v":100.27804162854832},{"$f":"_xlfn.XLOOKUP($W7,'PTRM Data'!$Z$7:$Z$37,'PTRM Data'!AC$7:AC$37)*('BBM Costs'!E$7+'BBM Costs'!E$11)","v":107.8723964183542},{"$f":"_xlfn.XLOOKUP($W7,'PTRM Data'!$Z$7:$Z$37,'PTRM Data'!AD$7:AD$37)*('BBM Costs'!F$7+'BBM Costs'!F$11)","v":112.53345816670699},{"$f":"_xlfn.XLOOKUP($W7,'PTRM Data'!$Z$7:$Z$37,'PTRM Data'!AE$7:AE$37)*('BBM Costs'!G$7+'BBM Costs'!G$11)","v":120.90528100156187},null,{"$f":"'PTRM Data'!B7","v":"Overhead Sub-Transmission Lines"},{"$f":"_xlfn.XLOOKUP(AD7,'PTRM Data'!$B$7:$B$37,'PTRM Data'!$C$7:$C$37)","v":1558.9719826140117}]
[null,"Return of Capital (regulatory depreciation)",{"$f":"_xlfn.XLOOKUP($B8,'PTRM Revenue data'!$B$7:$B$11,'PTRM Revenue data'!C$7:C$11)","v":213.77393355637935},{"$f":"_xlfn.XLOOKUP($B8,'PTRM Revenue data'!$B$7:$B$11,'PTRM Revenue data'!D$7:D$11)","v":236.24859776251324},{"$f":"_xlfn.XLOOKUP($B8,'PTRM Revenue data'!$B$7:$B$11,'PTRM Revenue data'!E$7:E$11)","v":256.90849518120496},{"$f":"_xlfn.XLOOKUP($B8,'PTRM Revenue data'!$B$7:$B$11,'PTRM Revenue data'!F$7:F$11)","v":275.86752720601993},{"$f":"_xlfn.XLOOKUP($B8,'PTRM Revenue data'!$B$7:$B$11,'PTRM Revenue data'!G$7:G$11)","v":285.74781858346029},null,{"$f":"'Opex costs'!B8","v":"Corrective Maintenance"},{"$f":"_xlfn.XLOOKUP($I8,'Opex costs'!$B$7:$B$20,'Opex costs'!C$7:C$20)","v":43.16368026405592},{"$f":"_xlfn.XLOOKUP($I8,'Opex costs'!$B$7:$B$20,'Opex costs'!D$7:D$20)","v":44.85875818537712},{"$f":"_xlfn.XLOOKUP($I8,'Opex costs'!$B$7:$B$20,'Opex costs'!E$7:E$20)","v":46.467744767363016},{"$f":"_xlfn.XLOOKUP($I8,'Opex costs'!$B$7:$B$20,'Opex costs'!F$7:F$20)","v":47.218876788922223},{"$f":"_xlfn.XLOOKUP($I8,'Opex costs'!$B$7:$B$20,'Opex costs'!G$7:G$20)","v":49.094188088432929},null,{"$f":"'PTRM Data'!B8","v":"Underground Sub-Transmission Cables"},{"$f":"_xlfn.XLOOKUP($P8,'PTRM Data'!$AU$7:$AU$37,'PTRM Data'!AV$7:AV$37)","v":0.84288315553511151},{"$f":"_xlfn.XLOOKUP($P8,'PTRM Data'!$AU$7:$AU$37,'PTRM Data'!AW$7:AW$37)","v":0.83786543740781427},{"$f":"_xlfn.XLOOKUP($P8,'PTRM Data'!$AU$7:$AU$37,'PTRM Data'!AX$7:AX$37)","v":0.88877564307924306},{"$f":"_xlfn.XLOOKUP($P8,'PTRM Data'!$AU$7:$AU$37,'PTRM Data'!AY$7:AY$37)","v":0.94188088498622236},{"$f":"_xlfn.XLOOKUP($P8,'PTRM Data'!$AU$7:$AU$37,'PTRM Data'!AZ$7:AZ$37)","v":0.99762721241194319},null,{"$f":"'PTRM Data'!B8","v":"Underground Sub-Transmission Cables"},{"$f":"_xlfn.XLOOKUP($W8,'PTRM Data'!$Z$7:$Z$37,'PTRM Data'!AA$7:AA$37)*('BBM Costs'!C$7+'BBM Costs'!C$11)","v":4.0993329025894996},{"$f":"_xlfn.XLOOKUP($W8,'PTRM Data'!$Z$7:$Z$37,'PTRM Data'!AB$7:AB$37)*('BBM Costs'!D$7+'BBM Costs'!D$11)","v":4.4891637677644267},{"$f":"_xlfn.XLOOKUP($W8,'PTRM Data'!$Z$7:$Z$37,'PTRM Data'!AC$7:AC$37)*('BBM Costs'!E$7+'BBM Costs'!E$11)","v":4.9020822406877995},{"$f":"_xlfn.XLOOKUP($W8,'PTRM Data'!$Z$7:$Z$37,'PTRM Data'!AD$7:AD$37)*('BBM Costs'!F$7+'BBM Costs'!F$11)","v":5.1872848234359781},{"$f":"_xlfn.XLOOKUP($W8,'PTRM Data'!$Z$7:$Z$37,'PTRM Data'!AE$7:AE$37)*('BBM Costs'!G$7+'BBM Costs'!G$11)","v":5.6463617665823698},null,{"$f":"'PTRM Data'!B8","v":"Underground Sub-Transmission Cables"},{"$f":"_xlfn.XLOOKUP(AD8,'PTRM Data'!$B$7:$B$37,'PTRM Data'!$C$7:$C$37)","v":68.738289722444975}]
[null,"Operating Expenditure",{"$f":"_xlfn.XLOOKUP($B9,'PTRM Revenue data'!$B$7:$B$11,'PTRM Revenue data'!C$7:C$11)","v":470.52155999180854},{"$f":"_xlfn.XLOOKUP($B9,'PTRM Revenue data'!$B$7:$B$11,'PTRM Revenue data'!D$7:D$11)","v":498.91320065039031},{"$f":"_xlfn.XLOOKUP($B9,'PTRM Revenue data'!$B$7:$B$11,'PTRM Revenue data'!E$7:E$11)","v":526.72354875899441},{"$f":"_xlfn.XLOOKUP($B9,'PTRM Revenue data'!$B$7:$B$11,'PTRM Revenue data'!F$7:F$11)","v":532.1921315718364},{"$f":"_xlfn.XLOOKUP($B9,'PTRM Revenue data'!$B$7:$B$11,'PTRM Revenue data'!G$7:G$11)","v":557.34373022405759},null,{"$f":"'Opex costs'!B9","v":"Forced Maintenance"},{"$f":"_xlfn.XLOOKUP($I9,'Opex costs'!$B$7:$B$20,'Opex costs'!C$7:C$20)","v":83.577913848902455},{"$f":"_xlfn.XLOOKUP($I9,'Opex costs'!$B$7:$B$20,'Opex costs'!D$7:D$20)","v":86.860096359955264},{"$f":"_xlfn.XLOOKUP($I9,'Opex costs'!$B$7:$B$20,'Opex costs'!E$7:E$20)","v":89.975580051582014},{"$f":"_xlfn.XLOOKUP($I9,'Opex costs'!$B$7:$B$20,'Opex costs'!F$7:F$20)","v":91.429998372795112},{"$f":"_xlfn.XLOOKUP($I9,'Opex costs'!$B$7:$B$20,'Opex costs'!G$7:G$20)","v":95.061167107053805},null,{"$f":"'PTRM Data'!B9","v":"Overhead Distribution Lines"},{"$f":"_xlfn.XLOOKUP($P9,'PTRM Data'!$AU$7:$AU$37,'PTRM Data'!AV$7:AV$37)","v":13.666932084073608},{"$f":"_xlfn.XLOOKUP($P9,'PTRM Data'!$AU$7:$AU$37,'PTRM Data'!AW$7:AW$37)","v":10.247644818274381},{"$f":"_xlfn.XLOOKUP($P9,'PTRM Data'!$AU$7:$AU$37,'PTRM Data'!AX$7:AX$37)","v":12.019893827160473},{"$f":"_xlfn.XLOOKUP($P9,'PTRM Data'!$AU$7:$AU$37,'PTRM Data'!AY$7:AY$37)","v":13.925714424879857},{"$f":"_xlfn.XLOOKUP($P9,'PTRM Data'!$AU$7:$AU$37,'PTRM Data'!AZ$7:AZ$37)","v":15.982889483046279},null,{"$f":"'PTRM Data'!B9","v":"Overhead Distribution Lines"},{"$f":"_xlfn.XLOOKUP($W9,'PTRM Data'!$Z$7:$Z$37,'PTRM Data'!AA$7:AA$37)*('BBM Costs'!C$7+'BBM Costs'!C$11)","v":381.18417528794998},{"$f":"_xlfn.XLOOKUP($W9,'PTRM Data'!$Z$7:$Z$37,'PTRM Data'!AB$7:AB$37)*('BBM Costs'!D$7+'BBM Costs'!D$11)","v":422.3233268724876},{"$f":"_xlfn.XLOOKUP($W9,'PTRM Data'!$Z$7:$Z$37,'PTRM Data'!AC$7:AC$37)*('BBM Costs'!E$7+'BBM Costs'!E$11)","v":465.83953292037427},{"$f":"_xlfn.XLOOKUP($W9,'PTRM Data'!$Z$7:$Z$37,'PTRM Data'!AD$7:AD$37)*('BBM Costs'!F$7+'BBM Costs'!F$11)","v":497.72656812306764},{"$f":"_xlfn.XLOOKUP($W9,'PTRM Data'!$Z$7:$Z$37,'PTRM Data'!AE$7:AE$37)*('BBM Costs'!G$7+'BBM Costs'!G$11)","v":547.14749201720713},null,{"$f":"'PTRM Data'!B9","v":"Overhead Distribution Lines"},{"$f":"_xlfn.XLOOKUP(AD9,'PTRM Data'!$B$7:$B$37,'PTRM Data'!$C$7:$C$37)","v":6391.7590742637421}]
[null,"Revenue Adjustments",{"$f":"_xlfn.XLOOKUP($B10,'PTRM Revenue data'!$B$7:$B$11,'PTRM Revenue data'!C$7:C$11)","v":-185.4584769322646},{"$f":"_xlfn.XLOOKUP($B10,'PTRM Revenue data'!$B$7:$B$11,'PTRM Revenue data'!D$7:D$11)","v":-209.81967496929849},{"$f":"_xlfn.XLOOKUP($B10,'PTRM Revenue data'!$B$7:$B$11,'PTRM Revenue data'!E$7:E$11)","v":-225.26515208240286},{"$f":"_xlfn.XLOOKUP($B10,'PTRM Revenue data'!$B$7:$B$11,'PTRM Revenue data'!F$7:F$11)","v":-174.40061532578881},{"$f":"_xlfn.XLOOKUP($B10,'PTRM Revenue data'!$B$7:$B$11,'PTRM Revenue data'!G$7:G$11)","v":-164.00960027915863},null,{"$f":"'Opex costs'!B10","v":"Vegetation Management"},{"$f":"_xlfn.XLOOKUP($I10,'Opex costs'!$B$7:$B$20,'Opex costs'!C$7:C$20)","v":51.388025866499355},{"$f":"_xlfn.XLOOKUP($I10,'Opex costs'!$B$7:$B$20,'Opex costs'!D$7:D$20)","v":53.406081498774135},{"$f":"_xlfn.XLOOKUP($I10,'Opex costs'!$B$7:$B$20,'Opex costs'!E$7:E$20)","v":55.321642071647588},{"$f":"_xlfn.XLOOKUP($I10,'Opex costs'!$B$7:$B$20,'Opex costs'!F$7:F$20)","v":56.215893709063764},{"$f":"_xlfn.XLOOKUP($I10,'Opex costs'!$B$7:$B$20,'Opex costs'!G$7:G$20)","v":58.448524128375915},null,{"$f":"'PTRM Data'!B10","v":"Underground Distribution Cables"},{"$f":"_xlfn.XLOOKUP($P10,'PTRM Data'!$AU$7:$AU$37,'PTRM Data'!AV$7:AV$37)","v":-2.5947508693429704},{"$f":"_xlfn.XLOOKUP($P10,'PTRM Data'!$AU$7:$AU$37,'PTRM Data'!AW$7:AW$37)","v":-2.9991652594825808},{"$f":"_xlfn.XLOOKUP($P10,'PTRM Data'!$AU$7:$AU$37,'PTRM Data'!AX$7:AX$37)","v":-2.5147914514863814},{"$f":"_xlfn.XLOOKUP($P10,'PTRM Data'!$AU$7:$AU$37,'PTRM Data'!AY$7:AY$37)","v":-2.0280270926808655},{"$f":"_xlfn.XLOOKUP($P10,'PTRM Data'!$AU$7:$AU$37,'PTRM Data'!AZ$7:AZ$37)","v":-1.535302663048224},null,{"$f":"'PTRM Data'!B10","v":"Underground Distribution Cables"},{"$f":"_xlfn.XLOOKUP($W10,'PTRM Data'!$Z$7:$Z$37,'PTRM Data'!AA$7:AA$37)*('BBM Costs'!C$7+'BBM Costs'!C$11)","v":67.402670683059455},{"$f":"_xlfn.XLOOKUP($W10,'PTRM Data'!$Z$7:$Z$37,'PTRM Data'!AB$7:AB$37)*('BBM Costs'!D$7+'BBM Costs'!D$11)","v":71.610361298206797},{"$f":"_xlfn.XLOOKUP($W10,'PTRM Data'!$Z$7:$Z$37,'PTRM Data'!AC$7:AC$37)*('BBM Costs'!E$7+'BBM Costs'!E$11)","v":75.893039500295984},{"$f":"_xlfn.XLOOKUP($W10,'PTRM Data'!$Z$7:$Z$37,'PTRM Data'!AD$7:AD$37)*('BBM Costs'!F$7+'BBM Costs'!F$11)","v":77.988690824915025},{"$f":"_xlfn.XLOOKUP($W10,'PTRM Data'!$Z$7:$Z$37,'PTRM Data'!AE$7:AE$37)*('BBM Costs'!G$7+'BBM Costs'!G$11)","v":82.53293828962984},null,{"$f":"'PTRM Data'!B10","v":"Underground Distribution Cables"},{"$f":"_xlfn.XLOOKUP(AD10,'PTRM Data'!$B$7:$B$37,'PTRM Data'!$C$7:$C$37)","v":1130.2190906603334}]
[null,"Net Tax Allowance",{"$f":"_xlfn.XLOOKUP($B11,'PTRM Revenue data'!$B$7:$B$11,'PTRM Revenue data'!C$7:C$11)","v":13.20445426431025},{"$f":"_xlfn.XLOOKUP($B11,'PTRM Revenue data'!$B$7:$B$11,'PTRM Revenue data'!D$7:D$11)","v":14.08020001774193},{"$f":"_xlfn.XLOOKUP($B11,'PTRM Revenue data'!$B$7:$B$11,'PTRM Revenue data'!E$7:E$11)","v":12.192839554649305},{"$f":"_xlfn.XLOOKUP($B11,'PTRM Revenue data'!$B$7:$B$11,'PTRM Revenue data'!F$7:F$11)","v":14.872648207853324},{"$f":"_xlfn.XLOOKUP($B11,'PTRM Revenue data'!$B$7:$B$11,'PTRM Revenue data'!G$7:G$11)","v":11.931465774630908},null,{"$f":"'Opex costs'!B11","v":"Other Network Maintenance"},{"$f":"_xlfn.XLOOKUP($I11,'Opex costs'!$B$7:$B$20,'Opex costs'!C$7:C$20)","v":0},{"$f":"_xlfn.XLOOKUP($I11,'Opex costs'!$B$7:$B$20,'Opex costs'!D$7:D$20)","v":0},{"$f":"_xlfn.XLOOKUP($I11,'Opex costs'!$B$7:$B$20,'Opex costs'!E$7:E$20)","v":0},{"$f":"_xlfn.XLOOKUP($I11,'Opex costs'!$B$7:$B$20,'Opex costs'!F$7:F$20)","v":0},{"$f":"_xlfn.XLOOKUP($I11,'Opex costs'!$B$7:$B$20,'Opex costs'!G$7:G$20)","v":0},null,{"$f":"'PTRM Data'!B11","v":"Distribution Equipment"},{"$f":"_xlfn.XLOOKUP($P11,'PTRM Data'!$AU$7:$AU$37,'PTRM Data'!AV$7:AV$37)","v":1.4472788527796334},{"$f":"_xlfn.XLOOKUP($P11,'PTRM Data'!$AU$7:$AU$37,'PTRM Data'!AW$7:AW$37)","v":1.4897706201956034},{"$f":"_xlfn.XLOOKUP($P11,'PTRM Data'!$AU$7:$AU$37,'PTRM Data'!AX$7:AX$37)","v":1.5538242036373342},{"$f":"_xlfn.XLOOKUP($P11,'PTRM Data'!$AU$7:$AU$37,'PTRM Data'!AY$7:AY$37)","v":1.6207965296501359},{"$f":"_xlfn.XLOOKUP($P11,'PTRM Data'!$AU$7:$AU$37,'PTRM Data'!AZ$7:AZ$37)","v":1.6907593362922062},null,{"$f":"'PTRM Data'!B11","v":"Distribution Equipment"},{"$f":"_xlfn.XLOOKUP($W11,'PTRM Data'!$Z$7:$Z$37,'PTRM Data'!AA$7:AA$37)*('BBM Costs'!C$7+'BBM Costs'!C$11)","v":1.4257573520464935},{"$f":"_xlfn.XLOOKUP($W11,'PTRM Data'!$Z$7:$Z$37,'PTRM Data'!AB$7:AB$37)*('BBM Costs'!D$7+'BBM Costs'!D$11)","v":1.5957828140139234},{"$f":"_xlfn.XLOOKUP($W11,'PTRM Data'!$Z$7:$Z$37,'PTRM Data'!AC$7:AC$37)*('BBM Costs'!E$7+'BBM Costs'!E$11)","v":1.7781851830982895},{"$f":"_xlfn.XLOOKUP($W11,'PTRM Data'!$Z$7:$Z$37,'PTRM Data'!AD$7:AD$37)*('BBM Costs'!F$7+'BBM Costs'!F$11)","v":1.9168800044914975},{"$f":"_xlfn.XLOOKUP($W11,'PTRM Data'!$Z$7:$Z$37,'PTRM Data'!AE$7:AE$37)*('BBM Costs'!G$7+'BBM Costs'!G$11)","v":2.1208068555435275},null,{"$f":"'PTRM Data'!B11","v":"Distribution Equipment"},{"$f":"_xlfn.XLOOKUP(AD11,'PTRM Data'!$B$7:$B$37,'PTRM Data'!$C$7:$C$37)","v":23.907334258452106}]
[null,null,null,null,null,null,null,null,{"$f":"'Opex costs'!B12","v":"Network Operating Costs"},{"$f":"_xlfn.XLOOKUP($I12,'Opex costs'!$B$7:$B$20,'Opex costs'!C$7:C$20)","v":64.118105938294221},{"$f":"_xlfn.XLOOKUP($I12,'Opex costs'!$B$7:$B$20,'Opex costs'!D$7:D$20)","v":66.636083670221836},{"$f":"_xlfn.XLOOKUP($I12,'Opex costs'!$B$7:$B$20,'Opex costs'!E$7:E$20)","v":69.026175791327987},{"$f":"_xlfn.XLOOKUP($I12,'Opex costs'!$B$7:$B$20,'Opex costs'!F$7:F$20)","v":70.141955591320723},{"$f":"_xlfn.XLOOKUP($I12,'Opex costs'!$B$7:$B$20,'Opex costs'!G$7:G$20)","v":72.927663571588511},null,{"$f":"'PTRM Data'!B12","v":"Substation Bays"},{"$f":"_xlfn.XLOOKUP($P12,'PTRM Data'!$AU$7:$AU$37,'PTRM Data'!AV$7:AV$37)","v":16.859967532723317},{"$f":"_xlfn.XLOOKUP($P12,'PTRM Data'!$AU$7:$AU$37,'PTRM Data'!AW$7:AW$37)","v":16.721350705082699},{"$f":"_xlfn.XLOOKUP($P12,'PTRM Data'!$AU$7:$AU$37,'PTRM Data'!AX$7:AX$37)","v":17.995610651061696},{"$f":"_xlfn.XLOOKUP($P12,'PTRM Data'!$AU$7:$AU$37,'PTRM Data'!AY$7:AY$37)","v":19.315495796528417},{"$f":"_xlfn.XLOOKUP($P12,'PTRM Data'!$AU$7:$AU$37,'PTRM Data'!AZ$7:AZ$37)","v":20.686684820458211},null,{"$f":"'PTRM Data'!B12","v":"Substation Bays"},{"$f":"_xlfn.XLOOKUP($W12,'PTRM Data'!$Z$7:$Z$37,'PTRM Data'!AA$7:AA$37)*('BBM Costs'!C$7+'BBM Costs'!C$11)","v":103.74435832385201},{"$f":"_xlfn.XLOOKUP($W12,'PTRM Data'!$Z$7:$Z$37,'PTRM Data'!AB$7:AB$37)*('BBM Costs'!D$7+'BBM Costs'!D$11)","v":112.67398233970525},{"$f":"_xlfn.XLOOKUP($W12,'PTRM Data'!$Z$7:$Z$37,'PTRM Data'!AC$7:AC$37)*('BBM Costs'!E$7+'BBM Costs'!E$11)","v":121.99594514627906},{"$f":"_xlfn.XLOOKUP($W12,'PTRM Data'!$Z$7:$Z$37,'PTRM Data'!AD$7:AD$37)*('BBM Costs'!F$7+'BBM Costs'!F$11)","v":128.05077649155953},{"$f":"_xlfn.XLOOKUP($W12,'PTRM Data'!$Z$7:$Z$37,'PTRM Data'!AE$7:AE$37)*('BBM Costs'!G$7+'BBM Costs'!G$11)","v":138.37162854203288},null,{"$f":"'PTRM Data'!B12","v":"Substation Bays"},{"$f":"_xlfn.XLOOKUP(AD12,'PTRM Data'!$B$7:$B$37,'PTRM Data'!$C$7:$C$37)","v":1739.6024985014967}]
[null,"Total",{"$f":"SUM(C7:C11)","v":1467.4820733827598},{"$f":"SUM(D7:D11)","v":1584.285131965968},1710.3850363109386,1846.5217613992063,1993.4941799274322,null,{"$f":"'Opex costs'!B13","v":"Meter Reading"},{"$f":"_xlfn.XLOOKUP($I13,'Opex costs'!$B$7:$B$20,'Opex costs'!C$7:C$20)","v":0},{"$f":"_xlfn.XLOOKUP($I13,'Opex costs'!$B$7:$B$20,'Opex costs'!D$7:D$20)","v":0},{"$f":"_xlfn.XLOOKUP($I13,'Opex costs'!$B$7:$B$20,'Opex costs'!E$7:E$20)","v":0},{"$f":"_xlfn.XLOOKUP($I13,'Opex costs'!$B$7:$B$20,'Opex costs'!F$7:F$20)","v":0},{"$f":"_xlfn.XLOOKUP($I13,'Opex costs'!$B$7:$B$20,'Opex costs'!G$7:G$20)","v":0},null,{"$f":"'PTRM Data'!B13","v":"Substation Establishment"},{"$f":"_xlfn.XLOOKUP($P13,'PTRM Data'!$AU$7:$AU$37,'PTRM Data'!AV$7:AV$37)","v":3.5263863742797543},{"$f":"_xlfn.XLOOKUP($P13,'PTRM Data'!$AU$7:$AU$37,'PTRM Data'!AW$7:AW$37)","v":3.0937046880353467},{"$f":"_xlfn.XLOOKUP($P13,'PTRM Data'!$AU$7:$AU$37,'PTRM Data'!AX$7:AX$37)","v":3.008538377350698},{"$f":"_xlfn.XLOOKUP($P13,'PTRM Data'!$AU$7:$AU$37,'PTRM Data'!AY$7:AY$37)","v":2.926427239942706},{"$f":"_xlfn.XLOOKUP($P13,'PTRM Data'!$AU$7:$AU$37,'PTRM Data'!AZ$7:AZ$37)","v":2.8536621992169309},null,{"$f":"'PTRM Data'!B13","v":"Substation Establishment"},{"$f":"_xlfn.XLOOKUP($W13,'PTRM Data'!$Z$7:$Z$37,'PTRM Data'!AA$7:AA$37)*('BBM Costs'!C$7+'BBM Costs'!C$11)","v":26.186822834485675},{"$f":"_xlfn.XLOOKUP($W13,'PTRM Data'!$Z$7:$Z$37,'PTRM Data'!AB$7:AB$37)*('BBM Costs'!D$7+'BBM Costs'!D$11)","v":29.731140461152101},{"$f":"_xlfn.XLOOKUP($W13,'PTRM Data'!$Z$7:$Z$37,'PTRM Data'!AC$7:AC$37)*('BBM Costs'!E$7+'BBM Costs'!E$11)","v":33.574678463449352},{"$f":"_xlfn.XLOOKUP($W13,'PTRM Data'!$Z$7:$Z$37,'PTRM Data'!AD$7:AD$37)*('BBM Costs'!F$7+'BBM Costs'!F$11)","v":36.666704640255134},{"$f":"_xlfn.XLOOKUP($W13,'PTRM Data'!$Z$7:$Z$37,'PTRM Data'!AE$7:AE$37)*('BBM Costs'!G$7+'BBM Costs'!G$11)","v":41.109811452094782},null,{"$f":"'PTRM Data'!B13","v":"Substation Establishment"},{"$f":"_xlfn.XLOOKUP(AD13,'PTRM Data'!$B$7:$B$37,'PTRM Data'!$C$7:$C$37)","v":439.10496114383687}]
[null,null,null,null,null,null,null,null,{"$f":"'Opex costs'!B14","v":"Customer Service (incl Call Centre)"},{"$f":"_xlfn.XLOOKUP($I14,'Opex costs'!$B$7:$B$20,'Opex costs'!C$7:C$20)","v":12.835568464608833},{"$f":"_xlfn.XLOOKUP($I14,'Opex costs'!$B$7:$B$20,'Opex costs'!D$7:D$20)","v":13.339633191686408},{"$f":"_xlfn.XLOOKUP($I14,'Opex costs'!$B$7:$B$20,'Opex costs'!E$7:E$20)","v":13.818096967374109},{"$f":"_xlfn.XLOOKUP($I14,'Opex costs'!$B$7:$B$20,'Opex costs'!F$7:F$20)","v":14.041460833237785},{"$f":"_xlfn.XLOOKUP($I14,'Opex costs'!$B$7:$B$20,'Opex costs'!G$7:G$20)","v":14.599121496788035},null,{"$f":"'PTRM Data'!B14","v":"Distribution Substation Switchgear"},{"$f":"_xlfn.XLOOKUP($P14,'PTRM Data'!$AU$7:$AU$37,'PTRM Data'!AV$7:AV$37)","v":1.8576565797867381},{"$f":"_xlfn.XLOOKUP($P14,'PTRM Data'!$AU$7:$AU$37,'PTRM Data'!AW$7:AW$37)","v":1.6066181307066714},{"$f":"_xlfn.XLOOKUP($P14,'PTRM Data'!$AU$7:$AU$37,'PTRM Data'!AX$7:AX$37)","v":1.8965848347605956},{"$f":"_xlfn.XLOOKUP($P14,'PTRM Data'!$AU$7:$AU$37,'PTRM Data'!AY$7:AY$37)","v":2.2095303329305764},{"$f":"_xlfn.XLOOKUP($P14,'PTRM Data'!$AU$7:$AU$37,'PTRM Data'!AZ$7:AZ$37)","v":2.549336148807491},null,{"$f":"'PTRM Data'!B14","v":"Distribution Substation Switchgear"},{"$f":"_xlfn.XLOOKUP($W14,'PTRM Data'!$Z$7:$Z$37,'PTRM Data'!AA$7:AA$37)*('BBM Costs'!C$7+'BBM Costs'!C$11)","v":39.417942459228776},{"$f":"_xlfn.XLOOKUP($W14,'PTRM Data'!$Z$7:$Z$37,'PTRM Data'!AB$7:AB$37)*('BBM Costs'!D$7+'BBM Costs'!D$11)","v":43.848869436868696},{"$f":"_xlfn.XLOOKUP($W14,'PTRM Data'!$Z$7:$Z$37,'PTRM Data'!AC$7:AC$37)*('BBM Costs'!E$7+'BBM Costs'!E$11)","v":48.573117532340561},{"$f":"_xlfn.XLOOKUP($W14,'PTRM Data'!$Z$7:$Z$37,'PTRM Data'!AD$7:AD$37)*('BBM Costs'!F$7+'BBM Costs'!F$11)","v":52.091658394006096},{"$f":"_xlfn.XLOOKUP($W14,'PTRM Data'!$Z$7:$Z$37,'PTRM Data'!AE$7:AE$37)*('BBM Costs'!G$7+'BBM Costs'!G$11)","v":57.424204796285892},null,{"$f":"'PTRM Data'!B14","v":"Distribution Substation Switchgear"},{"$f":"_xlfn.XLOOKUP(AD14,'PTRM Data'!$B$7:$B$37,'PTRM Data'!$C$7:$C$37)","v":660.96655563483523}]
[null,null,null,null,null,null,null,null,{"$f":"'Opex costs'!B15","v":"Other Operating Costs"},{"$f":"_xlfn.XLOOKUP($I15,'Opex costs'!$B$7:$B$20,'Opex costs'!C$7:C$20)","v":25.500328967263012},{"$f":"_xlfn.XLOOKUP($I15,'Opex costs'!$B$7:$B$20,'Opex costs'!D$7:D$20)","v":26.50175063368264},{"$f":"_xlfn.XLOOKUP($I15,'Opex costs'!$B$7:$B$20,'Opex costs'!E$7:E$20)","v":27.452311079259832},{"$f":"_xlfn.XLOOKUP($I15,'Opex costs'!$B$7:$B$20,'Opex costs'!F$7:F$20)","v":27.896066420102617},{"$f":"_xlfn.XLOOKUP($I15,'Opex costs'!$B$7:$B$20,'Opex costs'!G$7:G$20)","v":29.003966737244269},null,{"$f":"'PTRM Data'!B15","v":"Zone Transformers"},{"$f":"_xlfn.XLOOKUP($P15,'PTRM Data'!$AU$7:$AU$37,'PTRM Data'!AV$7:AV$37)","v":6.1316518603168184},{"$f":"_xlfn.XLOOKUP($P15,'PTRM Data'!$AU$7:$AU$37,'PTRM Data'!AW$7:AW$37)","v":6.1761946583413856},{"$f":"_xlfn.XLOOKUP($P15,'PTRM Data'!$AU$7:$AU$37,'PTRM Data'!AX$7:AX$37)","v":6.5037518854698995},{"$f":"_xlfn.XLOOKUP($P15,'PTRM Data'!$AU$7:$AU$37,'PTRM Data'!AY$7:AY$37)","v":6.8359234457187785},{"$f":"_xlfn.XLOOKUP($P15,'PTRM Data'!$AU$7:$AU$37,'PTRM Data'!AZ$7:AZ$37)","v":7.1738728124223563},null,{"$f":"'PTRM Data'!B15","v":"Zone Transformers"},{"$f":"_xlfn.XLOOKUP($W15,'PTRM Data'!$Z$7:$Z$37,'PTRM Data'!AA$7:AA$37)*('BBM Costs'!C$7+'BBM Costs'!C$11)","v":21.133256859585934},{"$f":"_xlfn.XLOOKUP($W15,'PTRM Data'!$Z$7:$Z$37,'PTRM Data'!AB$7:AB$37)*('BBM Costs'!D$7+'BBM Costs'!D$11)","v":22.438368805687009},{"$f":"_xlfn.XLOOKUP($W15,'PTRM Data'!$Z$7:$Z$37,'PTRM Data'!AC$7:AC$37)*('BBM Costs'!E$7+'BBM Costs'!E$11)","v":23.76491520857574},{"$f":"_xlfn.XLOOKUP($W15,'PTRM Data'!$Z$7:$Z$37,'PTRM Data'!AD$7:AD$37)*('BBM Costs'!F$7+'BBM Costs'!F$11)","v":24.410376691936928},{"$f":"_xlfn.XLOOKUP($W15,'PTRM Data'!$Z$7:$Z$37,'PTRM Data'!AE$7:AE$37)*('BBM Costs'!G$7+'BBM Costs'!G$11)","v":25.824798731470565},null,{"$f":"'PTRM Data'!B15","v":"Zone Transformers"},{"$f":"_xlfn.XLOOKUP(AD15,'PTRM Data'!$B$7:$B$37,'PTRM Data'!$C$7:$C$37)","v":354.36593399756219}]
[null,null,null,null,null,null,null,null,{"$f":"'Opex costs'!B16","v":"Training"},{"$f":"_xlfn.XLOOKUP($I16,'Opex costs'!$B$7:$B$20,'Opex costs'!C$7:C$20)","v":27.183687470421305},{"$f":"_xlfn.XLOOKUP($I16,'Opex costs'!$B$7:$B$20,'Opex costs'!D$7:D$20)","v":28.25121619293337},{"$f":"_xlfn.XLOOKUP($I16,'Opex costs'!$B$7:$B$20,'Opex costs'!E$7:E$20)","v":29.264526182286353},{"$f":"_xlfn.XLOOKUP($I16,'Opex costs'!$B$7:$B$20,'Opex costs'!F$7:F$20)","v":29.737575236449015},{"$f":"_xlfn.XLOOKUP($I16,'Opex costs'!$B$7:$B$20,'Opex costs'!G$7:G$20)","v":30.918611606929684},null,{"$f":"'PTRM Data'!B16","v":"Distribution Transformers"},{"$f":"_xlfn.XLOOKUP($P16,'PTRM Data'!$AU$7:$AU$37,'PTRM Data'!AV$7:AV$37)","v":25.592778742695337},{"$f":"_xlfn.XLOOKUP($P16,'PTRM Data'!$AU$7:$AU$37,'PTRM Data'!AW$7:AW$37)","v":25.714180300408216},{"$f":"_xlfn.XLOOKUP($P16,'PTRM Data'!$AU$7:$AU$37,'PTRM Data'!AX$7:AX$37)","v":27.208754207734366},{"$f":"_xlfn.XLOOKUP($P16,'PTRM Data'!$AU$7:$AU$37,'PTRM Data'!AY$7:AY$37)","v":28.747729145759713},{"$f":"_xlfn.XLOOKUP($P16,'PTRM Data'!$AU$7:$AU$37,'PTRM Data'!AZ$7:AZ$37)","v":30.336435117525539},null,{"$f":"'PTRM Data'!B16","v":"Distribution Transformers"},{"$f":"_xlfn.XLOOKUP($W16,'PTRM Data'!$Z$7:$Z$37,'PTRM Data'!AA$7:AA$37)*('BBM Costs'!C$7+'BBM Costs'!C$11)","v":100.79623879212758},{"$f":"_xlfn.XLOOKUP($W16,'PTRM Data'!$Z$7:$Z$37,'PTRM Data'!AB$7:AB$37)*('BBM Costs'!D$7+'BBM Costs'!D$11)","v":108.9240241935655},{"$f":"_xlfn.XLOOKUP($W16,'PTRM Data'!$Z$7:$Z$37,'PTRM Data'!AC$7:AC$37)*('BBM Costs'!E$7+'BBM Costs'!E$11)","v":117.36487767897501},{"$f":"_xlfn.XLOOKUP($W16,'PTRM Data'!$Z$7:$Z$37,'PTRM Data'!AD$7:AD$37)*('BBM Costs'!F$7+'BBM Costs'!F$11)","v":122.61823157608845},{"$f":"_xlfn.XLOOKUP($W16,'PTRM Data'!$Z$7:$Z$37,'PTRM Data'!AE$7:AE$37)*('BBM Costs'!G$7+'BBM Costs'!G$11)","v":131.91424051593745},null,{"$f":"'PTRM Data'!B16","v":"Distribution Transformers"},{"$f":"_xlfn.XLOOKUP(AD16,'PTRM Data'!$B$7:$B$37,'PTRM Data'!$C$7:$C$37)","v":1690.1679443134087}]
[null,null,null,null,null,null,null,null,{"$f":"'Opex costs'!B17","v":"Debt raising costs"},{"$f":"_xlfn.XLOOKUP($I17,'Opex costs'!$B$7:$B$20,'Opex costs'!C$7:C$20)","v":6.9602442745801003},{"$f":"_xlfn.XLOOKUP($I17,'Opex costs'!$B$7:$B$20,'Opex costs'!D$7:D$20)","v":7.233579549159729},{"$f":"_xlfn.XLOOKUP($I17,'Opex costs'!$B$7:$B$20,'Opex costs'!E$7:E$20)","v":7.4930323941588917},{"$f":"_xlfn.XLOOKUP($I17,'Opex costs'!$B$7:$B$20,'Opex costs'!F$7:F$20)","v":7.6141541873083245},{"$f":"_xlfn.XLOOKUP($I17,'Opex costs'!$B$7:$B$20,'Opex costs'!G$7:G$20)","v":7.9165525151530476},null,{"$f":"'PTRM Data'!B17","v":"Low Voltage Services"},{"$f":"_xlfn.XLOOKUP($P17,'PTRM Data'!$AU$7:$AU$37,'PTRM Data'!AV$7:AV$37)","v":3.1656521785832936},{"$f":"_xlfn.XLOOKUP($P17,'PTRM Data'!$AU$7:$AU$37,'PTRM Data'!AW$7:AW$37)","v":3.2758242644446121},{"$f":"_xlfn.XLOOKUP($P17,'PTRM Data'!$AU$7:$AU$37,'PTRM Data'!AX$7:AX$37)","v":3.7205661646247279},{"$f":"_xlfn.XLOOKUP($P17,'PTRM Data'!$AU$7:$AU$37,'PTRM Data'!AY$7:AY$37)","v":4.1967392473644249},{"$f":"_xlfn.XLOOKUP($P17,'PTRM Data'!$AU$7:$AU$37,'PTRM Data'!AZ$7:AZ$37)","v":4.7054357663295825},null,{"$f":"'PTRM Data'!B17","v":"Low Voltage Services"},{"$f":"_xlfn.XLOOKUP($W17,'PTRM Data'!$Z$7:$Z$37,'PTRM Data'!AA$7:AA$37)*('BBM Costs'!C$7+'BBM Costs'!C$11)","v":23.135649977555552},{"$f":"_xlfn.XLOOKUP($W17,'PTRM Data'!$Z$7:$Z$37,'PTRM Data'!AB$7:AB$37)*('BBM Costs'!D$7+'BBM Costs'!D$11)","v":26.02472150095408},{"$f":"_xlfn.XLOOKUP($W17,'PTRM Data'!$Z$7:$Z$37,'PTRM Data'!AC$7:AC$37)*('BBM Costs'!E$7+'BBM Costs'!E$11)","v":29.079032669457465},{"$f":"_xlfn.XLOOKUP($W17,'PTRM Data'!$Z$7:$Z$37,'PTRM Data'!AD$7:AD$37)*('BBM Costs'!F$7+'BBM Costs'!F$11)","v":31.424122630601218},{"$f":"_xlfn.XLOOKUP($W17,'PTRM Data'!$Z$7:$Z$37,'PTRM Data'!AE$7:AE$37)*('BBM Costs'!G$7+'BBM Costs'!G$11)","v":34.892528096437061},null,{"$f":"'PTRM Data'!B17","v":"Low Voltage Services"},{"$f":"_xlfn.XLOOKUP(AD17,'PTRM Data'!$B$7:$B$37,'PTRM Data'!$C$7:$C$37)","v":387.94239181446198}]
[null,null,null,null,null,null,null,null,{"$f":"'Opex costs'!B18","v":"Non-network Alternatives"},{"$f":"_xlfn.XLOOKUP($I18,'Opex costs'!$B$7:$B$20,'Opex costs'!C$7:C$20)","v":4.2337752749620616},{"$f":"_xlfn.XLOOKUP($I18,'Opex costs'!$B$7:$B$20,'Opex costs'!D$7:D$20)","v":4.4000395728282466},{"$f":"_xlfn.XLOOKUP($I18,'Opex costs'!$B$7:$B$20,'Opex costs'!E$7:E$20)","v":4.5578594706424349},{"$f":"_xlfn.XLOOKUP($I18,'Opex costs'!$B$7:$B$20,'Opex costs'!F$7:F$20)","v":4.6315353982198584},{"$f":"_xlfn.XLOOKUP($I18,'Opex costs'!$B$7:$B$20,'Opex costs'!G$7:G$20)","v":4.8154781613057267},null,{"$f":"'PTRM Data'!B18","v":"Metering"},{"$f":"_xlfn.XLOOKUP($P18,'PTRM Data'!$AU$7:$AU$37,'PTRM Data'!AV$7:AV$37)","v":3.013619245044036},{"$f":"_xlfn.XLOOKUP($P18,'PTRM Data'!$AU$7:$AU$37,'PTRM Data'!AW$7:AW$37)","v":3.1262884959812567},{"$f":"_xlfn.XLOOKUP($P18,'PTRM Data'!$AU$7:$AU$37,'PTRM Data'!AX$7:AX$37)","v":3.2966919258978113},{"$f":"_xlfn.XLOOKUP($P18,'PTRM Data'!$AU$7:$AU$37,'PTRM Data'!AY$7:AY$37)","v":3.4708188913678826},{"$f":"_xlfn.XLOOKUP($P18,'PTRM Data'!$AU$7:$AU$37,'PTRM Data'!AZ$7:AZ$37)","v":3.6484076291964604},null,{"$f":"'PTRM Data'!B18","v":"Metering"},{"$f":"_xlfn.XLOOKUP($W18,'PTRM Data'!$Z$7:$Z$37,'PTRM Data'!AA$7:AA$37)*('BBM Costs'!C$7+'BBM Costs'!C$11)","v":4.1114132142740401},{"$f":"_xlfn.XLOOKUP($W18,'PTRM Data'!$Z$7:$Z$37,'PTRM Data'!AB$7:AB$37)*('BBM Costs'!D$7+'BBM Costs'!D$11)","v":4.2078305414808908},{"$f":"_xlfn.XLOOKUP($W18,'PTRM Data'!$Z$7:$Z$37,'PTRM Data'!AC$7:AC$37)*('BBM Costs'!E$7+'BBM Costs'!E$11)","v":4.2875684564859089},{"$f":"_xlfn.XLOOKUP($W18,'PTRM Data'!$Z$7:$Z$37,'PTRM Data'!AD$7:AD$37)*('BBM Costs'!F$7+'BBM Costs'!F$11)","v":4.2265341612352438},{"$f":"_xlfn.XLOOKUP($W18,'PTRM Data'!$Z$7:$Z$37,'PTRM Data'!AE$7:AE$37)*('BBM Costs'!G$7+'BBM Costs'!G$11)","v":4.2790065475623669},null,{"$f":"'PTRM Data'!B18","v":"Metering"},{"$f":"_xlfn.XLOOKUP(AD18,'PTRM Data'!$B$7:$B$37,'PTRM Data'!$C$7:$C$37)","v":68.940854379729799}]
[null,null,null,null,null,null,null,null,{"$f":"'Opex costs'!B19","v":"Corporate Restructuring"},{"$f":"_xlfn.XLOOKUP($I19,'Opex costs'!$B$7:$B$20,'Opex costs'!C$7:C$20)","v":2.4232056947828369},{"$f":"_xlfn.XLOOKUP($I19,'Opex costs'!$B$7:$B$20,'Opex costs'!D$7:D$20)","v":2.5183672390931973},{"$f":"_xlfn.XLOOKUP($I19,'Opex costs'!$B$7:$B$20,'Opex costs'!E$7:E$20)","v":2.6086956222256283},{"$f":"_xlfn.XLOOKUP($I19,'Opex costs'!$B$7:$B$20,'Opex costs'!F$7:F$20)","v":2.6508641162243136},{"$f":"_xlfn.XLOOKUP($I19,'Opex costs'!$B$7:$B$20,'Opex costs'!G$7:G$20)","v":2.7561439485431793},null,{"$f":"'PTRM Data'!B19","v":"Communications – Pilot Wires"},{"$f":"_xlfn.XLOOKUP($P19,'PTRM Data'!$AU$7:$AU$37,'PTRM Data'!AV$7:AV$37)","v":4.0507389019062785},{"$f":"_xlfn.XLOOKUP($P19,'PTRM Data'!$AU$7:$AU$37,'PTRM Data'!AW$7:AW$37)","v":4.1720741808287505},{"$f":"_xlfn.XLOOKUP($P19,'PTRM Data'!$AU$7:$AU$37,'PTRM Data'!AX$7:AX$37)","v":4.4569426167435591},{"$f":"_xlfn.XLOOKUP($P19,'PTRM Data'!$AU$7:$AU$37,'PTRM Data'!AY$7:AY$37)","v":4.7534200829268025},{"$f":"_xlfn.XLOOKUP($P19,'PTRM Data'!$AU$7:$AU$37,'PTRM Data'!AZ$7:AZ$37)","v":5.0618768584143838},null,{"$f":"'PTRM Data'!B19","v":"Communications – Pilot Wires"},{"$f":"_xlfn.XLOOKUP($W19,'PTRM Data'!$Z$7:$Z$37,'PTRM Data'!AA$7:AA$37)*('BBM Costs'!C$7+'BBM Costs'!C$11)","v":11.585961046134724},{"$f":"_xlfn.XLOOKUP($W19,'PTRM Data'!$Z$7:$Z$37,'PTRM Data'!AB$7:AB$37)*('BBM Costs'!D$7+'BBM Costs'!D$11)","v":12.573187358945425},{"$f":"_xlfn.XLOOKUP($W19,'PTRM Data'!$Z$7:$Z$37,'PTRM Data'!AC$7:AC$37)*('BBM Costs'!E$7+'BBM Costs'!E$11)","v":13.59577798765098},{"$f":"_xlfn.XLOOKUP($W19,'PTRM Data'!$Z$7:$Z$37,'PTRM Data'!AD$7:AD$37)*('BBM Costs'!F$7+'BBM Costs'!F$11)","v":14.248899247054622},{"$f":"_xlfn.XLOOKUP($W19,'PTRM Data'!$Z$7:$Z$37,'PTRM Data'!AE$7:AE$37)*('BBM Costs'!G$7+'BBM Costs'!G$11)","v":15.371336147824216},null,{"$f":"'PTRM Data'!B19","v":"Communications – Pilot Wires"},{"$f":"_xlfn.XLOOKUP(AD19,'PTRM Data'!$B$7:$B$37,'PTRM Data'!$C$7:$C$37)","v":194.2753043059993}]
[null,null,null,null,null,null,null,null,{"$f":"'Opex costs'!B20","v":"Corporate Allocations"},{"$f":"_xlfn.XLOOKUP($I20,'Opex costs'!$B$7:$B$20,'Opex costs'!C$7:C$20)","v":43.710661878264553},{"$f":"_xlfn.XLOOKUP($I20,'Opex costs'!$B$7:$B$20,'Opex costs'!D$7:D$20)","v":45.427220276967233},{"$f":"_xlfn.XLOOKUP($I20,'Opex costs'!$B$7:$B$20,'Opex costs'!E$7:E$20)","v":47.056596364029403},{"$f":"_xlfn.XLOOKUP($I20,'Opex costs'!$B$7:$B$20,'Opex costs'!F$7:F$20)","v":47.817246929955608},{"$f":"_xlfn.XLOOKUP($I20,'Opex costs'!$B$7:$B$20,'Opex costs'!G$7:G$20)","v":49.716322672059597}]
[null,null,null,null,null,null,null,null,"EBSS",{"$f":"_xlfn.XLOOKUP($I21,'PTRM Revenue data'!$P$7:$P$11,'PTRM Revenue data'!Q$7:Q$11)","v":-44.029644778249462},{"$f":"_xlfn.XLOOKUP($I21,'PTRM Revenue data'!$P$7:$P$11,'PTRM Revenue data'!R$7:R$11)","v":-57.617984921399056},{"$f":"_xlfn.XLOOKUP($I21,'PTRM Revenue data'!$P$7:$P$11,'PTRM Revenue data'!S$7:S$11)","v":-62.216699950806287},{"$f":"_xlfn.XLOOKUP($I21,'PTRM Revenue data'!$P$7:$P$11,'PTRM Revenue data'!T$7:T$11)","v":-15.205959296761023},{"$f":"_xlfn.XLOOKUP($I21,'PTRM Revenue data'!$P$7:$P$11,'PTRM Revenue data'!U$7:U$11)","v":0},null,{"$f":"'PTRM Data'!B21","v":"Land & Easements (System) - combined"},{"$f":"_xlfn.XLOOKUP($P21,'PTRM Data'!$AU$7:$AU$37,'PTRM Data'!AV$7:AV$37)","v":-3.3592215329654831},{"$f":"_xlfn.XLOOKUP($P21,'PTRM Data'!$AU$7:$AU$37,'PTRM Data'!AW$7:AW$37)","v":-3.4669095115303326},{"$f":"_xlfn.XLOOKUP($P21,'PTRM Data'!$AU$7:$AU$37,'PTRM Data'!AX$7:AX$37)","v":-3.4810686878103998},{"$f":"_xlfn.XLOOKUP($P21,'PTRM Data'!$AU$7:$AU$37,'PTRM Data'!AY$7:AY$37)","v":-3.4957010823859931},{"$f":"_xlfn.XLOOKUP($P21,'PTRM Data'!$AU$7:$AU$37,'PTRM Data'!AZ$7:AZ$37)","v":-3.5106260313714723},null,{"$f":"'PTRM Data'!B21","v":"Land & Easements (System) - combined"},{"$f":"_xlfn.XLOOKUP($W21,'PTRM Data'!$Z$7:$Z$37,'PTRM Data'!AA$7:AA$37)*('BBM Costs'!C$7+'BBM Costs'!C$11)","v":7.1553194854133428},{"$f":"_xlfn.XLOOKUP($W21,'PTRM Data'!$Z$7:$Z$37,'PTRM Data'!AB$7:AB$37)*('BBM Costs'!D$7+'BBM Costs'!D$11)","v":7.6305067766916341},{"$f":"_xlfn.XLOOKUP($W21,'PTRM Data'!$Z$7:$Z$37,'PTRM Data'!AC$7:AC$37)*('BBM Costs'!E$7+'BBM Costs'!E$11)","v":8.1150054873041046},{"$f":"_xlfn.XLOOKUP($W21,'PTRM Data'!$Z$7:$Z$37,'PTRM Data'!AD$7:AD$37)*('BBM Costs'!F$7+'BBM Costs'!F$11)","v":8.3653044541336872},{"$f":"_xlfn.XLOOKUP($W21,'PTRM Data'!$Z$7:$Z$37,'PTRM Data'!AE$7:AE$37)*('BBM Costs'!G$7+'BBM Costs'!G$11)","v":8.8793280160184516},null,{"$f":"'PTRM Data'!B21","v":"Land & Easements (System) - combined"},{"$f":"_xlfn.XLOOKUP(AD21,'PTRM Data'!$B$7:$B$37,'PTRM Data'!$C$7:$C$37)","v":119.98157640095687}]
[null,null,null,null,null,null,null,null,"CESS",{"$f":"_xlfn.XLOOKUP($I22,'PTRM Revenue data'!$P$7:$P$11,'PTRM Revenue data'!Q$7:Q$11)","v":-125.15898482210655},{"$f":"_xlfn.XLOOKUP($I22,'PTRM Revenue data'!$P$7:$P$11,'PTRM Revenue data'!R$7:R$11)","v":-125.15898482210655},{"$f":"_xlfn.XLOOKUP($I22,'PTRM Revenue data'!$P$7:$P$11,'PTRM Revenue data'!S$7:S$11)","v":-125.15898482210655},{"$f":"_xlfn.XLOOKUP($I22,'PTRM Revenue data'!$P$7:$P$11,'PTRM Revenue data'!T$7:T$11)","v":-125.15898482210655},{"$f":"_xlfn.XLOOKUP($I22,'PTRM Revenue data'!$P$7:$P$11,'PTRM Revenue data'!U$7:U$11)","v":-125.15898482210655},null,{"$f":"'PTRM Data'!B22","v":"Land Improvements"},{"$f":"_xlfn.XLOOKUP($P22,'PTRM Data'!$AU$7:$AU$37,'PTRM Data'!AV$7:AV$37)","v":1.1855824775160055},{"$f":"_xlfn.XLOOKUP($P22,'PTRM Data'!$AU$7:$AU$37,'PTRM Data'!AW$7:AW$37)","v":1.2173160229710249},{"$f":"_xlfn.XLOOKUP($P22,'PTRM Data'!$AU$7:$AU$37,'PTRM Data'!AX$7:AX$37)","v":1.3572700966089712},{"$f":"_xlfn.XLOOKUP($P22,'PTRM Data'!$AU$7:$AU$37,'PTRM Data'!AY$7:AY$37)","v":1.4975274807237882},{"$f":"_xlfn.XLOOKUP($P22,'PTRM Data'!$AU$7:$AU$37,'PTRM Data'!AZ$7:AZ$37)","v":1.6381193500076185},null,{"$f":"'PTRM Data'!B22","v":"Land Improvements"},{"$f":"_xlfn.XLOOKUP($W22,'PTRM Data'!$Z$7:$Z$37,'PTRM Data'!AA$7:AA$37)*('BBM Costs'!C$7+'BBM Costs'!C$11)","v":8.2116531917370885},{"$f":"_xlfn.XLOOKUP($W22,'PTRM Data'!$Z$7:$Z$37,'PTRM Data'!AB$7:AB$37)*('BBM Costs'!D$7+'BBM Costs'!D$11)","v":8.4419420959697824},{"$f":"_xlfn.XLOOKUP($W22,'PTRM Data'!$Z$7:$Z$37,'PTRM Data'!AC$7:AC$37)*('BBM Costs'!E$7+'BBM Costs'!E$11)","v":8.6446601196845521},{"$f":"_xlfn.XLOOKUP($W22,'PTRM Data'!$Z$7:$Z$37,'PTRM Data'!AD$7:AD$37)*('BBM Costs'!F$7+'BBM Costs'!F$11)","v":8.569621472091324},{"$f":"_xlfn.XLOOKUP($W22,'PTRM Data'!$Z$7:$Z$37,'PTRM Data'!AE$7:AE$37)*('BBM Costs'!G$7+'BBM Costs'!G$11)","v":8.7356407160216047},null,{"$f":"'PTRM Data'!B22","v":"Land Improvements"},{"$f":"_xlfn.XLOOKUP(AD22,'PTRM Data'!$B$7:$B$37,'PTRM Data'!$C$7:$C$37)","v":137.69435408314962}]
[null,null,null,null,null,null,null,null,"Control period carryover",{"$f":"_xlfn.XLOOKUP($I23,'PTRM Revenue data'!$P$7:$P$11,'PTRM Revenue data'!Q$7:Q$11)","v":0},{"$f":"_xlfn.XLOOKUP($I23,'PTRM Revenue data'!$P$7:$P$11,'PTRM Revenue data'!R$7:R$11)","v":0},{"$f":"_xlfn.XLOOKUP($I23,'PTRM Revenue data'!$P$7:$P$11,'PTRM Revenue data'!S$7:S$11)","v":0},{"$f":"_xlfn.XLOOKUP($I23,'PTRM Revenue data'!$P$7:$P$11,'PTRM Revenue data'!T$7:T$11)","v":0},{"$f":"_xlfn.XLOOKUP($I23,'PTRM Revenue data'!$P$7:$P$11,'PTRM Revenue data'!U$7:U$11)","v":0},null,{"$f":"'PTRM Data'!B23","v":"Control Centre - SCADA"},{"$f":"_xlfn.XLOOKUP($P23,'PTRM Data'!$AU$7:$AU$37,'PTRM Data'!AV$7:AV$37)","v":6.8168031802760858},{"$f":"_xlfn.XLOOKUP($P23,'PTRM Data'!$AU$7:$AU$37,'PTRM Data'!AW$7:AW$37)","v":7.3250911707512731},{"$f":"_xlfn.XLOOKUP($P23,'PTRM Data'!$AU$7:$AU$37,'PTRM Data'!AX$7:AX$37)","v":4.9475221967503336},{"$f":"_xlfn.XLOOKUP($P23,'PTRM Data'!$AU$7:$AU$37,'PTRM Data'!AY$7:AY$37)","v":5.0328055544886725},{"$f":"_xlfn.XLOOKUP($P23,'PTRM Data'!$AU$7:$AU$37,'PTRM Data'!AZ$7:AZ$37)","v":4.9161607962243359},null,{"$f":"'PTRM Data'!B23","v":"Control Centre - SCADA"},{"$f":"_xlfn.XLOOKUP($W23,'PTRM Data'!$Z$7:$Z$37,'PTRM Data'!AA$7:AA$37)*('BBM Costs'!C$7+'BBM Costs'!C$11)","v":1.6093292808949011},{"$f":"_xlfn.XLOOKUP($W23,'PTRM Data'!$Z$7:$Z$37,'PTRM Data'!AB$7:AB$37)*('BBM Costs'!D$7+'BBM Costs'!D$11)","v":1.5187783901295648},{"$f":"_xlfn.XLOOKUP($W23,'PTRM Data'!$Z$7:$Z$37,'PTRM Data'!AC$7:AC$37)*('BBM Costs'!E$7+'BBM Costs'!E$11)","v":1.3885605227532594},{"$f":"_xlfn.XLOOKUP($W23,'PTRM Data'!$Z$7:$Z$37,'PTRM Data'!AD$7:AD$37)*('BBM Costs'!F$7+'BBM Costs'!F$11)","v":1.375555034384937},{"$f":"_xlfn.XLOOKUP($W23,'PTRM Data'!$Z$7:$Z$37,'PTRM Data'!AE$7:AE$37)*('BBM Costs'!G$7+'BBM Costs'!G$11)","v":1.4037907077487775},null,{"$f":"'PTRM Data'!B23","v":"Control Centre - SCADA"},{"$f":"_xlfn.XLOOKUP(AD23,'PTRM Data'!$B$7:$B$37,'PTRM Data'!$C$7:$C$37)","v":26.985498615906216}]
[null,null,null,null,null,null,null,null,"Shared asset decrements",{"$f":"_xlfn.XLOOKUP($I24,'PTRM Revenue data'!$P$7:$P$11,'PTRM Revenue data'!Q$7:Q$11)","v":0},{"$f":"_xlfn.XLOOKUP($I24,'PTRM Revenue data'!$P$7:$P$11,'PTRM Revenue data'!R$7:R$11)","v":0},{"$f":"_xlfn.XLOOKUP($I24,'PTRM Revenue data'!$P$7:$P$11,'PTRM Revenue data'!S$7:S$11)","v":0},{"$f":"_xlfn.XLOOKUP($I24,'PTRM Revenue data'!$P$7:$P$11,'PTRM Revenue data'!T$7:T$11)","v":0},{"$f":"_xlfn.XLOOKUP($I24,'PTRM Revenue data'!$P$7:$P$11,'PTRM Revenue data'!U$7:U$11)","v":0},null,{"$f":"'PTRM Data'!B24","v":"Other Equipment"},{"$f":"_xlfn.XLOOKUP($P24,'PTRM Data'!$AU$7:$AU$37,'PTRM Data'!AV$7:AV$37)","v":1.4982042986868074E-3},{"$f":"_xlfn.XLOOKUP($P24,'PTRM Data'!$AU$7:$AU$37,'PTRM Data'!AW$7:AW$37)","v":1.540150739898008E-3},{"$f":"_xlfn.XLOOKUP($P24,'PTRM Data'!$AU$7:$AU$37,'PTRM Data'!AX$7:AX$37)","v":2.6141400733381767E-3},{"$f":"_xlfn.XLOOKUP($P24,'PTRM Data'!$AU$7:$AU$37,'PTRM Data'!AY$7:AY$37)","v":3.6881294067783385E-3},{"$f":"_xlfn.XLOOKUP($P24,'PTRM Data'!$AU$7:$AU$37,'PTRM Data'!AZ$7:AZ$37)","v":4.7621187402184934E-3},null,{"$f":"'PTRM Data'!B24","v":"Other Equipment"},{"$f":"_xlfn.XLOOKUP($W24,'PTRM Data'!$Z$7:$Z$37,'PTRM Data'!AA$7:AA$37)*('BBM Costs'!C$7+'BBM Costs'!C$11)","v":7.8517063647206994E-2},{"$f":"_xlfn.XLOOKUP($W24,'PTRM Data'!$Z$7:$Z$37,'PTRM Data'!AB$7:AB$37)*('BBM Costs'!D$7+'BBM Costs'!D$11)","v":8.1038250460509206E-2},{"$f":"_xlfn.XLOOKUP($W24,'PTRM Data'!$Z$7:$Z$37,'PTRM Data'!AC$7:AC$37)*('BBM Costs'!E$7+'BBM Costs'!E$11)","v":8.3329555209600087E-2},{"$f":"_xlfn.XLOOKUP($W24,'PTRM Data'!$Z$7:$Z$37,'PTRM Data'!AD$7:AD$37)*('BBM Costs'!F$7+'BBM Costs'!F$11)","v":8.2970123207065274E-2},{"$f":"_xlfn.XLOOKUP($W24,'PTRM Data'!$Z$7:$Z$37,'PTRM Data'!AE$7:AE$37)*('BBM Costs'!G$7+'BBM Costs'!G$11)","v":8.4977573383395885E-2},null,{"$f":"'PTRM Data'!B24","v":"Other Equipment"},{"$f":"_xlfn.XLOOKUP(AD24,'PTRM Data'!$B$7:$B$37,'PTRM Data'!$C$7:$C$37)","v":1.3165870636483477}]
[null,null,null,null,null,null,null,null,"DMIA",{"$f":"_xlfn.XLOOKUP($I25,'PTRM Revenue data'!$P$7:$P$11,'PTRM Revenue data'!Q$7:Q$11)","v":1.5018600354790221},{"$f":"_xlfn.XLOOKUP($I25,'PTRM Revenue data'!$P$7:$P$11,'PTRM Revenue data'!R$7:R$11)","v":1.5358548313327987},{"$f":"_xlfn.XLOOKUP($I25,'PTRM Revenue data'!$P$7:$P$11,'PTRM Revenue data'!S$7:S$11)","v":1.5752013236134523},{"$f":"_xlfn.XLOOKUP($I25,'PTRM Revenue data'!$P$7:$P$11,'PTRM Revenue data'!T$7:T$11)","v":1.6197081906782154},{"$f":"_xlfn.XLOOKUP($I25,'PTRM Revenue data'!$P$7:$P$11,'PTRM Revenue data'!U$7:U$11)","v":1.6552569816884413},null,{"$f":"'PTRM Data'!B25","v":"Generation Assets"},{"$f":"_xlfn.XLOOKUP($P25,'PTRM Data'!$AU$7:$AU$37,'PTRM Data'!AV$7:AV$37)","v":0.31440846487687901},{"$f":"_xlfn.XLOOKUP($P25,'PTRM Data'!$AU$7:$AU$37,'PTRM Data'!AW$7:AW$37)","v":0.32321121374085054},{"$f":"_xlfn.XLOOKUP($P25,'PTRM Data'!$AU$7:$AU$37,'PTRM Data'!AX$7:AX$37)","v":0.34330230717605759},{"$f":"_xlfn.XLOOKUP($P25,'PTRM Data'!$AU$7:$AU$37,'PTRM Data'!AY$7:AY$37)","v":0.36339340061126463},{"$f":"_xlfn.XLOOKUP($P25,'PTRM Data'!$AU$7:$AU$37,'PTRM Data'!AZ$7:AZ$37)","v":0.38348449404647161},null,{"$f":"'PTRM Data'!B25","v":"Generation Assets"},{"$f":"_xlfn.XLOOKUP($W25,'PTRM Data'!$Z$7:$Z$37,'PTRM Data'!AA$7:AA$37)*('BBM Costs'!C$7+'BBM Costs'!C$11)","v":0.85880894664857876},{"$f":"_xlfn.XLOOKUP($W25,'PTRM Data'!$Z$7:$Z$37,'PTRM Data'!AB$7:AB$37)*('BBM Costs'!D$7+'BBM Costs'!D$11)","v":0.86802071057057606},{"$f":"_xlfn.XLOOKUP($W25,'PTRM Data'!$Z$7:$Z$37,'PTRM Data'!AC$7:AC$37)*('BBM Costs'!E$7+'BBM Costs'!E$11)","v":0.87254481385965321},{"$f":"_xlfn.XLOOKUP($W25,'PTRM Data'!$Z$7:$Z$37,'PTRM Data'!AD$7:AD$37)*('BBM Costs'!F$7+'BBM Costs'!F$11)","v":0.84761407154809398},{"$f":"_xlfn.XLOOKUP($W25,'PTRM Data'!$Z$7:$Z$37,'PTRM Data'!AE$7:AE$37)*('BBM Costs'!G$7+'BBM Costs'!G$11)","v":0.84505670331962135},null,{"$f":"'PTRM Data'!B25","v":"Generation Assets"},{"$f":"_xlfn.XLOOKUP(AD25,'PTRM Data'!$B$7:$B$37,'PTRM Data'!$C$7:$C$37)","v":14.400649957866881}]
[null,null,null,null,null,null,null,null,null,null,null,null,null,null,null,{"$f":"'PTRM Data'!B26","v":"Motor Vehicles"},{"$f":"_xlfn.XLOOKUP($P26,'PTRM Data'!$AU$7:$AU$37,'PTRM Data'!AV$7:AV$37)","v":23.288122617366035},{"$f":"_xlfn.XLOOKUP($P26,'PTRM Data'!$AU$7:$AU$37,'PTRM Data'!AW$7:AW$37)","v":25.353464913879368},{"$f":"_xlfn.XLOOKUP($P26,'PTRM Data'!$AU$7:$AU$37,'PTRM Data'!AX$7:AX$37)","v":28.458064997275763},{"$f":"_xlfn.XLOOKUP($P26,'PTRM Data'!$AU$7:$AU$37,'PTRM Data'!AY$7:AY$37)","v":31.368995421616116},{"$f":"_xlfn.XLOOKUP($P26,'PTRM Data'!$AU$7:$AU$37,'PTRM Data'!AZ$7:AZ$37)","v":32.518431131919336},null,{"$f":"'PTRM Data'!B26","v":"Motor Vehicles"},{"$f":"_xlfn.XLOOKUP($W26,'PTRM Data'!$Z$7:$Z$37,'PTRM Data'!AA$7:AA$37)*('BBM Costs'!C$7+'BBM Costs'!C$11)","v":10.278136797078993},{"$f":"_xlfn.XLOOKUP($W26,'PTRM Data'!$Z$7:$Z$37,'PTRM Data'!AB$7:AB$37)*('BBM Costs'!D$7+'BBM Costs'!D$11)","v":12.838193126774481},{"$f":"_xlfn.XLOOKUP($W26,'PTRM Data'!$Z$7:$Z$37,'PTRM Data'!AC$7:AC$37)*('BBM Costs'!E$7+'BBM Costs'!E$11)","v":15.35829879131164},{"$f":"_xlfn.XLOOKUP($W26,'PTRM Data'!$Z$7:$Z$37,'PTRM Data'!AD$7:AD$37)*('BBM Costs'!F$7+'BBM Costs'!F$11)","v":16.445981671548658},{"$f":"_xlfn.XLOOKUP($W26,'PTRM Data'!$Z$7:$Z$37,'PTRM Data'!AE$7:AE$37)*('BBM Costs'!G$7+'BBM Costs'!G$11)","v":17.282014010290261},null,{"$f":"'PTRM Data'!B26","v":"Motor Vehicles"},{"$f":"_xlfn.XLOOKUP(AD26,'PTRM Data'!$B$7:$B$37,'PTRM Data'!$C$7:$C$37)","v":172.34549175507311}]
[null,null,null,null,null,null,null,null,null,null,null,null,null,null,null,{"$f":"'PTRM Data'!B27","v":"Plant & Equipment"},{"$f":"_xlfn.XLOOKUP($P27,'PTRM Data'!$AU$7:$AU$37,'PTRM Data'!AV$7:AV$37)","v":8.3962501678532497},{"$f":"_xlfn.XLOOKUP($P27,'PTRM Data'!$AU$7:$AU$37,'PTRM Data'!AW$7:AW$37)","v":7.2266269406527757},{"$f":"_xlfn.XLOOKUP($P27,'PTRM Data'!$AU$7:$AU$37,'PTRM Data'!AX$7:AX$37)","v":6.2852004083317485},{"$f":"_xlfn.XLOOKUP($P27,'PTRM Data'!$AU$7:$AU$37,'PTRM Data'!AY$7:AY$37)","v":6.3116552985725951},{"$f":"_xlfn.XLOOKUP($P27,'PTRM Data'!$AU$7:$AU$37,'PTRM Data'!AZ$7:AZ$37)","v":6.163589028781173},null,{"$f":"'PTRM Data'!B27","v":"Plant & Equipment"},{"$f":"_xlfn.XLOOKUP($W27,'PTRM Data'!$Z$7:$Z$37,'PTRM Data'!AA$7:AA$37)*('BBM Costs'!C$7+'BBM Costs'!C$11)","v":2.4680638948609226},{"$f":"_xlfn.XLOOKUP($W27,'PTRM Data'!$Z$7:$Z$37,'PTRM Data'!AB$7:AB$37)*('BBM Costs'!D$7+'BBM Costs'!D$11)","v":2.464065121047371},{"$f":"_xlfn.XLOOKUP($W27,'PTRM Data'!$Z$7:$Z$37,'PTRM Data'!AC$7:AC$37)*('BBM Costs'!E$7+'BBM Costs'!E$11)","v":2.4946439956000988},{"$f":"_xlfn.XLOOKUP($W27,'PTRM Data'!$Z$7:$Z$37,'PTRM Data'!AD$7:AD$37)*('BBM Costs'!F$7+'BBM Costs'!F$11)","v":2.5190187943106515},{"$f":"_xlfn.XLOOKUP($W27,'PTRM Data'!$Z$7:$Z$37,'PTRM Data'!AE$7:AE$37)*('BBM Costs'!G$7+'BBM Costs'!G$11)","v":2.5991495915145242},null,{"$f":"'PTRM Data'!B27","v":"Plant & Equipment"},{"$f":"_xlfn.XLOOKUP(AD27,'PTRM Data'!$B$7:$B$37,'PTRM Data'!$C$7:$C$37)","v":41.384902151101194}]
[null,null,null,null,null,null,null,null,"Total",{"$f":"SUM(J7:J25)","v":277.29930932929642},{"$f":"SUM(K7:K25)","v":281.21998170556884},293.24809194066984,348.04696305830203,382.62156361571886,null,{"$f":"'PTRM Data'!B28","v":"Buildings"},{"$f":"_xlfn.XLOOKUP($P28,'PTRM Data'!$AU$7:$AU$37,'PTRM Data'!AV$7:AV$37)","v":1.8738569725992278},{"$f":"_xlfn.XLOOKUP($P28,'PTRM Data'!$AU$7:$AU$37,'PTRM Data'!AW$7:AW$37)","v":1.832301564253612},{"$f":"_xlfn.XLOOKUP($P28,'PTRM Data'!$AU$7:$AU$37,'PTRM Data'!AX$7:AX$37)","v":2.1530076435171139},{"$f":"_xlfn.XLOOKUP($P28,'PTRM Data'!$AU$7:$AU$37,'PTRM Data'!AY$7:AY$37)","v":2.4760467783715221},{"$f":"_xlfn.XLOOKUP($P28,'PTRM Data'!$AU$7:$AU$37,'PTRM Data'!AZ$7:AZ$37)","v":2.8086321141294199},null,{"$f":"'PTRM Data'!B28","v":"Buildings"},{"$f":"_xlfn.XLOOKUP($W28,'PTRM Data'!$Z$7:$Z$37,'PTRM Data'!AA$7:AA$37)*('BBM Costs'!C$7+'BBM Costs'!C$11)","v":24.555494063168215},{"$f":"_xlfn.XLOOKUP($W28,'PTRM Data'!$Z$7:$Z$37,'PTRM Data'!AB$7:AB$37)*('BBM Costs'!D$7+'BBM Costs'!D$11)","v":27.189999959321923},{"$f":"_xlfn.XLOOKUP($W28,'PTRM Data'!$Z$7:$Z$37,'PTRM Data'!AC$7:AC$37)*('BBM Costs'!E$7+'BBM Costs'!E$11)","v":29.537854682777706},{"$f":"_xlfn.XLOOKUP($W28,'PTRM Data'!$Z$7:$Z$37,'PTRM Data'!AD$7:AD$37)*('BBM Costs'!F$7+'BBM Costs'!F$11)","v":31.384296795452126},{"$f":"_xlfn.XLOOKUP($W28,'PTRM Data'!$Z$7:$Z$37,'PTRM Data'!AE$7:AE$37)*('BBM Costs'!G$7+'BBM Costs'!G$11)","v":34.522043453895598},null,{"$f":"'PTRM Data'!B28","v":"Buildings"},{"$f":"_xlfn.XLOOKUP(AD28,'PTRM Data'!$B$7:$B$37,'PTRM Data'!$C$7:$C$37)","v":411.75057144678505}]
[null,null,null,null,null,null,null,null,null,null,null,null,null,null,null,{"$f":"'PTRM Data'!B29","v":"Office Equipment & Furniture"},{"$f":"_xlfn.XLOOKUP($P29,'PTRM Data'!$AU$7:$AU$37,'PTRM Data'!AV$7:AV$37)","v":-2.1975460479055995},{"$f":"_xlfn.XLOOKUP($P29,'PTRM Data'!$AU$7:$AU$37,'PTRM Data'!AW$7:AW$37)","v":-1.2596782146354057},{"$f":"_xlfn.XLOOKUP($P29,'PTRM Data'!$AU$7:$AU$37,'PTRM Data'!AX$7:AX$37)","v":-0.72829896701862196},{"$f":"_xlfn.XLOOKUP($P29,'PTRM Data'!$AU$7:$AU$37,'PTRM Data'!AY$7:AY$37)","v":-0.53375926351833169},{"$f":"_xlfn.XLOOKUP($P29,'PTRM Data'!$AU$7:$AU$37,'PTRM Data'!AZ$7:AZ$37)","v":-0.30351162074214538},null,{"$f":"'PTRM Data'!B29","v":"Office Equipment & Furniture"},{"$f":"_xlfn.XLOOKUP($W29,'PTRM Data'!$Z$7:$Z$37,'PTRM Data'!AA$7:AA$37)*('BBM Costs'!C$7+'BBM Costs'!C$11)","v":-0.58336348897249879},{"$f":"_xlfn.XLOOKUP($W29,'PTRM Data'!$Z$7:$Z$37,'PTRM Data'!AB$7:AB$37)*('BBM Costs'!D$7+'BBM Costs'!D$11)","v":-0.34837040548946335},{"$f":"_xlfn.XLOOKUP($W29,'PTRM Data'!$Z$7:$Z$37,'PTRM Data'!AC$7:AC$37)*('BBM Costs'!E$7+'BBM Costs'!E$11)","v":-0.17392369468205776},{"$f":"_xlfn.XLOOKUP($W29,'PTRM Data'!$Z$7:$Z$37,'PTRM Data'!AD$7:AD$37)*('BBM Costs'!F$7+'BBM Costs'!F$11)","v":1.8478533372313479E-3},{"$f":"_xlfn.XLOOKUP($W29,'PTRM Data'!$Z$7:$Z$37,'PTRM Data'!AE$7:AE$37)*('BBM Costs'!G$7+'BBM Costs'!G$11)","v":0.19085047170583061},null,{"$f":"'PTRM Data'!B29","v":"Office Equipment & Furniture"},{"$f":"_xlfn.XLOOKUP(AD29,'PTRM Data'!$B$7:$B$37,'PTRM Data'!$C$7:$C$37)","v":-9.7819351273368493}]
[null,null,null,null,null,null,null,null,null,null,null,null,null,null,null,{"$f":"'PTRM Data'!B30","v":"Initial Leases (10 yr life)"},{"$f":"_xlfn.XLOOKUP($P30,'PTRM Data'!$AU$7:$AU$37,'PTRM Data'!AV$7:AV$37)","v":11.216644520823703},{"$f":"_xlfn.XLOOKUP($P30,'PTRM Data'!$AU$7:$AU$37,'PTRM Data'!AW$7:AW$37)","v":11.530686017295238},{"$f":"_xlfn.XLOOKUP($P30,'PTRM Data'!$AU$7:$AU$37,'PTRM Data'!AX$7:AX$37)","v":11.886744854147823},{"$f":"_xlfn.XLOOKUP($P30,'PTRM Data'!$AU$7:$AU$37,'PTRM Data'!AY$7:AY$37)","v":12.242803691000407},{"$f":"_xlfn.XLOOKUP($P30,'PTRM Data'!$AU$7:$AU$37,'PTRM Data'!AZ$7:AZ$37)","v":4.1146195391251066},null,{"$f":"'PTRM Data'!B30","v":"Initial Leases (10 yr life)"},{"$f":"_xlfn.XLOOKUP($W30,'PTRM Data'!$Z$7:$Z$37,'PTRM Data'!AA$7:AA$37)*('BBM Costs'!C$7+'BBM Costs'!C$11)","v":3.1966483310204876},{"$f":"_xlfn.XLOOKUP($W30,'PTRM Data'!$Z$7:$Z$37,'PTRM Data'!AB$7:AB$37)*('BBM Costs'!D$7+'BBM Costs'!D$11)","v":2.6118608156144729},{"$f":"_xlfn.XLOOKUP($W30,'PTRM Data'!$Z$7:$Z$37,'PTRM Data'!AC$7:AC$37)*('BBM Costs'!E$7+'BBM Costs'!E$11)","v":1.9363645323941494},{"$f":"_xlfn.XLOOKUP($W30,'PTRM Data'!$Z$7:$Z$37,'PTRM Data'!AD$7:AD$37)*('BBM Costs'!F$7+'BBM Costs'!F$11)","v":1.1356762710275627},{"$f":"_xlfn.XLOOKUP($W30,'PTRM Data'!$Z$7:$Z$37,'PTRM Data'!AE$7:AE$37)*('BBM Costs'!G$7+'BBM Costs'!G$11)","v":0.29976577994304299},null,{"$f":"'PTRM Data'!B30","v":"Initial Leases (10 yr life)"},{"$f":"_xlfn.XLOOKUP(AD30,'PTRM Data'!$B$7:$B$37,'PTRM Data'!$C$7:$C$37)","v":53.601926054762309}]
[null,null,null,null,null,null,null,null,null,null,null,null,null,null,null,{"$f":"'PTRM Data'!B31","v":"Lease Extensions (5yr Life)"},{"$f":"_xlfn.XLOOKUP($P31,'PTRM Data'!$AU$7:$AU$37,'PTRM Data'!AV$7:AV$37)","v":0},{"$f":"_xlfn.XLOOKUP($P31,'PTRM Data'!$AU$7:$AU$37,'PTRM Data'!AW$7:AW$37)","v":0},{"$f":"_xlfn.XLOOKUP($P31,'PTRM Data'!$AU$7:$AU$37,'PTRM Data'!AX$7:AX$37)","v":0},{"$f":"_xlfn.XLOOKUP($P31,'PTRM Data'!$AU$7:$AU$37,'PTRM Data'!AY$7:AY$37)","v":0},{"$f":"_xlfn.XLOOKUP($P31,'PTRM Data'!$AU$7:$AU$37,'PTRM Data'!AZ$7:AZ$37)","v":2.647442587981288},null,{"$f":"'PTRM Data'!B31","v":"Lease Extensions (5yr Life)"},{"$f":"_xlfn.XLOOKUP($W31,'PTRM Data'!$Z$7:$Z$37,'PTRM Data'!AA$7:AA$37)*('BBM Costs'!C$7+'BBM Costs'!C$11)","v":0},{"$f":"_xlfn.XLOOKUP($W31,'PTRM Data'!$Z$7:$Z$37,'PTRM Data'!AB$7:AB$37)*('BBM Costs'!D$7+'BBM Costs'!D$11)","v":0},{"$f":"_xlfn.XLOOKUP($W31,'PTRM Data'!$Z$7:$Z$37,'PTRM Data'!AC$7:AC$37)*('BBM Costs'!E$7+'BBM Costs'!E$11)","v":0},{"$f":"_xlfn.XLOOKUP($W31,'PTRM Data'!$Z$7:$Z$37,'PTRM Data'!AD$7:AD$37)*('BBM Costs'!F$7+'BBM Costs'!F$11)","v":0},{"$f":"_xlfn.XLOOKUP($W31,'PTRM Data'!$Z$7:$Z$37,'PTRM Data'!AE$7:AE$37)*('BBM Costs'!G$7+'BBM Costs'!G$11)","v":1.0899640910437438},null,{"$f":"'PTRM Data'!B31","v":"Lease Extensions (5yr Life)"},{"$f":"_xlfn.XLOOKUP(AD31,'PTRM Data'!$B$7:$B$37,'PTRM Data'!$C$7:$C$37)","v":0}]
[null,null,null,null,null,null,null,null,null,null,null,null,null,null,null,{"$f":"'PTRM Data'!B32","v":"Land & Easements - combined"},{"$f":"_xlfn.XLOOKUP($P32,'PTRM Data'!$AU$7:$AU$37,'PTRM Data'!AV$7:AV$37)","v":-0.94773801516305733},{"$f":"_xlfn.XLOOKUP($P32,'PTRM Data'!$AU$7:$AU$37,'PTRM Data'!AW$7:AW$37)","v":-0.97427260525300985},{"$f":"_xlfn.XLOOKUP($P32,'PTRM Data'!$AU$7:$AU$37,'PTRM Data'!AX$7:AX$37)","v":-0.97427260525300985},{"$f":"_xlfn.XLOOKUP($P32,'PTRM Data'!$AU$7:$AU$37,'PTRM Data'!AY$7:AY$37)","v":-0.84904644838209065},{"$f":"_xlfn.XLOOKUP($P32,'PTRM Data'!$AU$7:$AU$37,'PTRM Data'!AZ$7:AZ$37)","v":-0.84904644838209065},null,{"$f":"'PTRM Data'!B32","v":"Land & Easements - combined"},{"$f":"_xlfn.XLOOKUP($W32,'PTRM Data'!$Z$7:$Z$37,'PTRM Data'!AA$7:AA$37)*('BBM Costs'!C$7+'BBM Costs'!C$11)","v":2.018732084328084},{"$f":"_xlfn.XLOOKUP($W32,'PTRM Data'!$Z$7:$Z$37,'PTRM Data'!AB$7:AB$37)*('BBM Costs'!D$7+'BBM Costs'!D$11)","v":2.1443287435115574},{"$f":"_xlfn.XLOOKUP($W32,'PTRM Data'!$Z$7:$Z$37,'PTRM Data'!AC$7:AC$37)*('BBM Costs'!E$7+'BBM Costs'!E$11)","v":2.2712069903829666},{"$f":"_xlfn.XLOOKUP($W32,'PTRM Data'!$Z$7:$Z$37,'PTRM Data'!AD$7:AD$37)*('BBM Costs'!F$7+'BBM Costs'!F$11)","v":2.0317904388922332},{"$f":"_xlfn.XLOOKUP($W32,'PTRM Data'!$Z$7:$Z$37,'PTRM Data'!AE$7:AE$37)*('BBM Costs'!G$7+'BBM Costs'!G$11)","v":2.1474693825690307},null,{"$f":"'PTRM Data'!B32","v":"Land & Easements - combined"},{"$f":"_xlfn.XLOOKUP(AD32,'PTRM Data'!$B$7:$B$37,'PTRM Data'!$C$7:$C$37)","v":33.850432297626618}]
[null,null,null,null,null,null,null,null,null,null,null,null,null,null,null,{"$f":"'PTRM Data'!B33","v":"Communications"},{"$f":"_xlfn.XLOOKUP($P33,'PTRM Data'!$AU$7:$AU$37,'PTRM Data'!AV$7:AV$37)","v":3.533475173508112},{"$f":"_xlfn.XLOOKUP($P33,'PTRM Data'!$AU$7:$AU$37,'PTRM Data'!AW$7:AW$37)","v":3.6324047445730967},{"$f":"_xlfn.XLOOKUP($P33,'PTRM Data'!$AU$7:$AU$37,'PTRM Data'!AX$7:AX$37)","v":3.8635871882284425},{"$f":"_xlfn.XLOOKUP($P33,'PTRM Data'!$AU$7:$AU$37,'PTRM Data'!AY$7:AY$37)","v":4.0947696318837883},{"$f":"_xlfn.XLOOKUP($P33,'PTRM Data'!$AU$7:$AU$37,'PTRM Data'!AZ$7:AZ$37)","v":4.3259520755391341},null,{"$f":"'PTRM Data'!B33","v":"Communications"},{"$f":"_xlfn.XLOOKUP($W33,'PTRM Data'!$Z$7:$Z$37,'PTRM Data'!AA$7:AA$37)*('BBM Costs'!C$7+'BBM Costs'!C$11)","v":10.061701207278524},{"$f":"_xlfn.XLOOKUP($W33,'PTRM Data'!$Z$7:$Z$37,'PTRM Data'!AB$7:AB$37)*('BBM Costs'!D$7+'BBM Costs'!D$11)","v":10.178874322291772},{"$f":"_xlfn.XLOOKUP($W33,'PTRM Data'!$Z$7:$Z$37,'PTRM Data'!AC$7:AC$37)*('BBM Costs'!E$7+'BBM Costs'!E$11)","v":10.242221912082474},{"$f":"_xlfn.XLOOKUP($W33,'PTRM Data'!$Z$7:$Z$37,'PTRM Data'!AD$7:AD$37)*('BBM Costs'!F$7+'BBM Costs'!F$11)","v":9.9607125166933521},{"$f":"_xlfn.XLOOKUP($W33,'PTRM Data'!$Z$7:$Z$37,'PTRM Data'!AE$7:AE$37)*('BBM Costs'!G$7+'BBM Costs'!G$11)","v":9.9430972864361262},null,{"$f":"'PTRM Data'!B33","v":"Communications"},{"$f":"_xlfn.XLOOKUP(AD33,'PTRM Data'!$B$7:$B$37,'PTRM Data'!$C$7:$C$37)","v":168.7162641145087}]
[null,null,null,null,null,null,null,null,null,null,null,null,null,null,null,{"$f":"'PTRM Data'!B34","v":"In-house software"},{"$f":"_xlfn.XLOOKUP($P34,'PTRM Data'!$AU$7:$AU$37,'PTRM Data'!AV$7:AV$37)","v":62.348701858793888},{"$f":"_xlfn.XLOOKUP($P34,'PTRM Data'!$AU$7:$AU$37,'PTRM Data'!AW$7:AW$37)","v":60.500906767991822},{"$f":"_xlfn.XLOOKUP($P34,'PTRM Data'!$AU$7:$AU$37,'PTRM Data'!AX$7:AX$37)","v":58.520352350691823},{"$f":"_xlfn.XLOOKUP($P34,'PTRM Data'!$AU$7:$AU$37,'PTRM Data'!AY$7:AY$37)","v":62.507151538209555},{"$f":"_xlfn.XLOOKUP($P34,'PTRM Data'!$AU$7:$AU$37,'PTRM Data'!AZ$7:AZ$37)","v":55.829960086463103},null,{"$f":"'PTRM Data'!B34","v":"In-house software"},{"$f":"_xlfn.XLOOKUP($W34,'PTRM Data'!$Z$7:$Z$37,'PTRM Data'!AA$7:AA$37)*('BBM Costs'!C$7+'BBM Costs'!C$11)","v":11.264166507133552},{"$f":"_xlfn.XLOOKUP($W34,'PTRM Data'!$Z$7:$Z$37,'PTRM Data'!AB$7:AB$37)*('BBM Costs'!D$7+'BBM Costs'!D$11)","v":12.775002666159041},{"$f":"_xlfn.XLOOKUP($W34,'PTRM Data'!$Z$7:$Z$37,'PTRM Data'!AC$7:AC$37)*('BBM Costs'!E$7+'BBM Costs'!E$11)","v":13.53404709303909},{"$f":"_xlfn.XLOOKUP($W34,'PTRM Data'!$Z$7:$Z$37,'PTRM Data'!AD$7:AD$37)*('BBM Costs'!F$7+'BBM Costs'!F$11)","v":12.959966136107615},{"$f":"_xlfn.XLOOKUP($W34,'PTRM Data'!$Z$7:$Z$37,'PTRM Data'!AE$7:AE$37)*('BBM Costs'!G$7+'BBM Costs'!G$11)","v":11.675229093701088},null,{"$f":"'PTRM Data'!B34","v":"In-house software"},{"$f":"_xlfn.XLOOKUP(AD34,'PTRM Data'!$B$7:$B$37,'PTRM Data'!$C$7:$C$37)","v":188.87940044100932}]
[null,null,null,null,null,null,null,null,null,null,null,null,null,null,null,{"$f":"'PTRM Data'!B35","v":"IT Systems"},{"$f":"_xlfn.XLOOKUP($P35,'PTRM Data'!$AU$7:$AU$37,'PTRM Data'!AV$7:AV$37)","v":1.9426802940394716},{"$f":"_xlfn.XLOOKUP($P35,'PTRM Data'!$AU$7:$AU$37,'PTRM Data'!AW$7:AW$37)","v":2.7827291291609089},{"$f":"_xlfn.XLOOKUP($P35,'PTRM Data'!$AU$7:$AU$37,'PTRM Data'!AX$7:AX$37)","v":3.4259276821559159},{"$f":"_xlfn.XLOOKUP($P35,'PTRM Data'!$AU$7:$AU$37,'PTRM Data'!AY$7:AY$37)","v":2.263499726423253},{"$f":"_xlfn.XLOOKUP($P35,'PTRM Data'!$AU$7:$AU$37,'PTRM Data'!AZ$7:AZ$37)","v":2.135564861087401},null,{"$f":"'PTRM Data'!B35","v":"IT Systems"},{"$f":"_xlfn.XLOOKUP($W35,'PTRM Data'!$Z$7:$Z$37,'PTRM Data'!AA$7:AA$37)*('BBM Costs'!C$7+'BBM Costs'!C$11)","v":0.44135666622755787},{"$f":"_xlfn.XLOOKUP($W35,'PTRM Data'!$Z$7:$Z$37,'PTRM Data'!AB$7:AB$37)*('BBM Costs'!D$7+'BBM Costs'!D$11)","v":0.54781286422841691},{"$f":"_xlfn.XLOOKUP($W35,'PTRM Data'!$Z$7:$Z$37,'PTRM Data'!AC$7:AC$37)*('BBM Costs'!E$7+'BBM Costs'!E$11)","v":0.59421841091743743},{"$f":"_xlfn.XLOOKUP($W35,'PTRM Data'!$Z$7:$Z$37,'PTRM Data'!AD$7:AD$37)*('BBM Costs'!F$7+'BBM Costs'!F$11)","v":0.53225024686810951},{"$f":"_xlfn.XLOOKUP($W35,'PTRM Data'!$Z$7:$Z$37,'PTRM Data'!AE$7:AE$37)*('BBM Costs'!G$7+'BBM Costs'!G$11)","v":0.52129065132968722},null,{"$f":"'PTRM Data'!B35","v":"IT Systems"},{"$f":"_xlfn.XLOOKUP(AD35,'PTRM Data'!$B$7:$B$37,'PTRM Data'!$C$7:$C$37)","v":7.4007413193786009}]
[null,null,null,null,null,null,null,null,null,null,null,null,null,null,null,{"$f":"'PTRM Data'!B36","v":"Legacy ICT Assets"},{"$f":"_xlfn.XLOOKUP($P36,'PTRM Data'!$AU$7:$AU$37,'PTRM Data'!AV$7:AV$37)","v":14.264442865679143},{"$f":"_xlfn.XLOOKUP($P36,'PTRM Data'!$AU$7:$AU$37,'PTRM Data'!AW$7:AW$37)","v":14.663816045024728},{"$f":"_xlfn.XLOOKUP($P36,'PTRM Data'!$AU$7:$AU$37,'PTRM Data'!AX$7:AX$37)","v":15.126147921812587},{"$f":"_xlfn.XLOOKUP($P36,'PTRM Data'!$AU$7:$AU$37,'PTRM Data'!AY$7:AY$37)","v":15.588479798600446},{"$f":"_xlfn.XLOOKUP($P36,'PTRM Data'!$AU$7:$AU$37,'PTRM Data'!AZ$7:AZ$37)","v":16.050811675388303},null,{"$f":"'PTRM Data'!B36","v":"Legacy ICT Assets"},{"$f":"_xlfn.XLOOKUP($W36,'PTRM Data'!$Z$7:$Z$37,'PTRM Data'!AA$7:AA$37)*('BBM Costs'!C$7+'BBM Costs'!C$11)","v":4.7898513631967203},{"$f":"_xlfn.XLOOKUP($W36,'PTRM Data'!$Z$7:$Z$37,'PTRM Data'!AB$7:AB$37)*('BBM Costs'!D$7+'BBM Costs'!D$11)","v":4.0702839311812324},{"$f":"_xlfn.XLOOKUP($W36,'PTRM Data'!$Z$7:$Z$37,'PTRM Data'!AC$7:AC$37)*('BBM Costs'!E$7+'BBM Costs'!E$11)","v":3.2333395749070868},{"$f":"_xlfn.XLOOKUP($W36,'PTRM Data'!$Z$7:$Z$37,'PTRM Data'!AD$7:AD$37)*('BBM Costs'!F$7+'BBM Costs'!F$11)","v":2.2127446352144449},{"$f":"_xlfn.XLOOKUP($W36,'PTRM Data'!$Z$7:$Z$37,'PTRM Data'!AE$7:AE$37)*('BBM Costs'!G$7+'BBM Costs'!G$11)","v":1.1693630564965312},null,{"$f":"'PTRM Data'!B36","v":"Legacy ICT Assets"},{"$f":"_xlfn.XLOOKUP(AD36,'PTRM Data'!$B$7:$B$37,'PTRM Data'!$C$7:$C$37)","v":80.317017074383813}]
[null,null,null,null,null,null,null,null,null,null,null,null,null,null,null,{"$f":"'PTRM Data'!B37","v":"Buildings - capital works"},{"$f":"_xlfn.XLOOKUP($P37,'PTRM Data'!$AU$7:$AU$37,'PTRM Data'!AV$7:AV$37)","v":1.6024220461445804E-2},{"$f":"_xlfn.XLOOKUP($P37,'PTRM Data'!$AU$7:$AU$37,'PTRM Data'!AW$7:AW$37)","v":1.6472863561809881E-2},{"$f":"_xlfn.XLOOKUP($P37,'PTRM Data'!$AU$7:$AU$37,'PTRM Data'!AX$7:AX$37)","v":8.3233039249217544E-2},{"$f":"_xlfn.XLOOKUP($P37,'PTRM Data'!$AU$7:$AU$37,'PTRM Data'!AY$7:AY$37)","v":0.14999321493662565},{"$f":"_xlfn.XLOOKUP($P37,'PTRM Data'!$AU$7:$AU$37,'PTRM Data'!AZ$7:AZ$37)","v":0.21675339062403287},null,{"$f":"'PTRM Data'!B37","v":"Buildings - capital works"},{"$f":"_xlfn.XLOOKUP($W37,'PTRM Data'!$Z$7:$Z$37,'PTRM Data'!AA$7:AA$37)*('BBM Costs'!C$7+'BBM Costs'!C$11)","v":5.0449325932915601},{"$f":"_xlfn.XLOOKUP($W37,'PTRM Data'!$Z$7:$Z$37,'PTRM Data'!AB$7:AB$37)*('BBM Costs'!D$7+'BBM Costs'!D$11)","v":5.2118701345196126},{"$f":"_xlfn.XLOOKUP($W37,'PTRM Data'!$Z$7:$Z$37,'PTRM Data'!AC$7:AC$37)*('BBM Costs'!E$7+'BBM Costs'!E$11)","v":5.3646222595764232},{"$f":"_xlfn.XLOOKUP($W37,'PTRM Data'!$Z$7:$Z$37,'PTRM Data'!AD$7:AD$37)*('BBM Costs'!F$7+'BBM Costs'!F$11)","v":5.3471816569675434},{"$f":"_xlfn.XLOOKUP($W37,'PTRM Data'!$Z$7:$Z$37,'PTRM Data'!AE$7:AE$37)*('BBM Costs'!G$7+'BBM Costs'!G$11)","v":5.4827660534856051},null,{"$f":"'PTRM Data'!B37","v":"Buildings - capital works"},{"$f":"_xlfn.XLOOKUP(AD37,'PTRM Data'!$B$7:$B$37,'PTRM Data'!$C$7:$C$37)","v":84.594261180599446}]

{"sheet":"Inputs >>>","index":7,"n_rows":0,"n_cols":0,"rows_kept":0,"cut":false,"hidden":false,"merged":[]}

{"sheet":"Control panel","index":8,"n_rows":39,"n_cols":46,"rows_kept":39,"cut":false,"hidden":false,"merged":[]}
[]
[null,"BBM Costs"]
[]
[null,"Proportion of scalable costs required",null,null,"Operational costs",null,null,null,null,null,null,"Return of capex (Regulatory depreciation split)",null,null,null,null,null,null,"Return on capex",null,null,null,null,null,null,"Matching beween opex and assets"]
[]
[null,"Voltage level","%",null,"Category","Avoidable costs (%)","Indirect costs (%)","Customer related (%)","Asset related (%)","Scalable",null,"Category","Avoidable costs (%)","Indirect costs (%)","Customer related (%)","Asset related (%)","Scalable",null,"Category","Avoidable costs (%)","Indirect costs (%)","Customer related (%)","Asset related (%)","Scalable",null,"Category","Replacement cost (ORAB)","Preventative Maintenance","Corrective Maintenance","Forced Maintenance","Vegetation Management","Other Network Maintenance","Network Operating Costs","Meter Reading","Customer Service (incl Call Centre)","Other Operating Costs","Training","Debt raising costs","Non-network Alternatives","Corporate Restructuring","Corporate Allocations","EBSS","CESS","Control period carryover","Shared asset decrements","DMIA"]
[null,"ICC",0.3,null,{"$f":"'Opex costs'!B7","v":"Preventative Maintenance"},0.56000000000000005,{"$f":"1-F7","v":0.43999999999999995},0.43,{"$f":"1-H7","v":0.57000000000000006},"Scalable",null,{"$f":"'PTRM Data'!B7","v":"Overhead Sub-Transmission Lines"},0,{"$f":"1-M7","v":1},0,{"$f":"1-O7","v":1},"Scalable",null,{"$f":"'PTRM Data'!B7","v":"Overhead Sub-Transmission Lines"},0,{"$f":"1-T7","v":1},0,{"$f":"1-V7","v":1},"Scalable",0,{"$f":"'PTRM Data'!B7","v":"Overhead Sub-Transmission Lines"},{"$f":"_xlfn.XLOOKUP(Z7,'PTRM Data'!$B$7:$B$37,'PTRM Data'!$C$7:$C$37)","v":1558.9719826140117},1,1,1,1,0,1,0,1,1,1,1,0,1,1,1,1,1,1,1]
[null,"CAC",0.55000000000000004,null,{"$f":"'Opex costs'!B8","v":"Corrective Maintenance"},0.56000000000000005,{"$f":"1-F8","v":0.43999999999999995},0.43,{"$f":"1-H8","v":0.57000000000000006},"Scalable",null,{"$f":"'PTRM Data'!B8","v":"Underground Sub-Transmission Cables"},0,{"$f":"1-M8","v":1},0,{"$f":"1-O8","v":1},"Scalable",null,{"$f":"'PTRM Data'!B8","v":"Underground Sub-Transmission Cables"},0,{"$f":"1-T8","v":1},0,{"$f":"1-V8","v":1},"Scalable",0,{"$f":"'PTRM Data'!B8","v":"Underground Sub-Transmission Cables"},{"$f":"_xlfn.XLOOKUP(Z8,'PTRM Data'!$B$7:$B$37,'PTRM Data'!$C$7:$C$37)","v":68.738289722444975},1,1,1,0,0,1,0,1,1,1,1,0,1,1,1,1,1,1,1]
[null,"SAC",1,null,{"$f":"'Opex costs'!B9","v":"Forced Maintenance"},0,1,0,1,"Scalable",null,{"$f":"'PTRM Data'!B9","v":"Overhead Distribution Lines"},0.43,0.57000000000000006,0.43,0.57000000000000006,"Scalable",null,{"$f":"'PTRM Data'!B9","v":"Overhead Distribution Lines"},0.43,0.57000000000000006,0.43,0.57000000000000006,"Scalable",0,{"$f":"'PTRM Data'!B9","v":"Overhead Distribution Lines"},{"$f":"_xlfn.XLOOKUP(Z9,'PTRM Data'!$B$7:$B$37,'PTRM Data'!$C$7:$C$37)","v":6391.7590742637421},1,1,1,1,0,1,0,1,1,1,1,0,1,1,1,1,1,1,1]
[null,null,null,null,{"$f":"'Opex costs'!B10","v":"Vegetation Management"},0,1,0,1,"Scalable",null,{"$f":"'PTRM Data'!B10","v":"Underground Distribution Cables"},0.43,0.57000000000000006,0.43,0.57000000000000006,"Scalable",null,{"$f":"'PTRM Data'!B10","v":"Underground Distribution Cables"},0.43,0.57000000000000006,0.43,0.57000000000000006,"Scalable",0,{"$f":"'PTRM Data'!B10","v":"Underground Distribution Cables"},{"$f":"_xlfn.XLOOKUP(Z10,'PTRM Data'!$B$7:$B$37,'PTRM Data'!$C$7:$C$37)","v":1130.2190906603334},1,1,1,0,0,1,0,1,1,1,1,0,1,1,1,1,1,1,1]
[null,null,null,null,{"$f":"'Opex costs'!B11","v":"Other Network Maintenance"},0.2,0.8,0,1,"Scalable",null,{"$f":"'PTRM Data'!B11","v":"Distribution Equipment"},0.43,0.57000000000000006,0.43,0.57000000000000006,"Scalable",null,{"$f":"'PTRM Data'!B11","v":"Distribution Equipment"},0.43,0.57000000000000006,0.43,0.57000000000000006,"Scalable",0,{"$f":"'PTRM Data'!B11","v":"Distribution Equipment"},{"$f":"_xlfn.XLOOKUP(Z11,'PTRM Data'!$B$7:$B$37,'PTRM Data'!$C$7:$C$37)","v":23.907334258452106},1,1,1,0,0,1,0,1,1,1,1,0,1,1,1,1,1,1,1]
[null,null,null,null,{"$f":"'Opex costs'!B12","v":"Network Operating Costs"},0,1,0,1,"Scalable",null,{"$f":"'PTRM Data'!B12","v":"Substation Bays"},0,1,0,1,"Scalable",null,{"$f":"'PTRM Data'!B12","v":"Substation Bays"},0,1,0,1,"Scalable",0,{"$f":"'PTRM Data'!B12","v":"Substation Bays"},{"$f":"_xlfn.XLOOKUP(Z12,'PTRM Data'!$B$7:$B$37,'PTRM Data'!$C$7:$C$37)","v":1739.6024985014967},1,1,1,0,0,1,1,1,1,1,1,0,1,1,1,1,1,1,1]
[null,null,null,null,{"$f":"'Opex costs'!B13","v":"Meter Reading"},1,0,1,0,"Scalable",null,{"$f":"'PTRM Data'!B13","v":"Substation Establishment"},0,1,0,1,"Scalable",null,{"$f":"'PTRM Data'!B13","v":"Substation Establishment"},0,1,0,1,"Scalable",0,{"$f":"'PTRM Data'!B13","v":"Substation Establishment"},{"$f":"_xlfn.XLOOKUP(Z13,'PTRM Data'!$B$7:$B$37,'PTRM Data'!$C$7:$C$37)","v":439.10496114383687},1,1,1,1,0,1,0,1,1,1,1,0,1,1,1,1,1,1,1]
[null,null,null,null,{"$f":"'Opex costs'!B14","v":"Customer Service (incl Call Centre)"},1,0,1,0,"Scalable",null,{"$f":"'PTRM Data'!B14","v":"Distribution Substation Switchgear"},0.43,0.57000000000000006,0.43,0.57000000000000006,"Scalable",null,{"$f":"'PTRM Data'!B14","v":"Distribution Substation Switchgear"},0.43,0.57000000000000006,0.43,0.57000000000000006,"Scalable",0,{"$f":"'PTRM Data'!B14","v":"Distribution Substation Switchgear"},{"$f":"_xlfn.XLOOKUP(Z14,'PTRM Data'!$B$7:$B$37,'PTRM Data'!$C$7:$C$37)","v":660.96655563483523},1,1,1,0,0,1,0,1,1,1,1,0,1,1,1,1,1,1,1]
[null,null,null,null,{"$f":"'Opex costs'!B15","v":"Other Operating Costs"},1,0,0,1,"Scalable",null,{"$f":"'PTRM Data'!B15","v":"Zone Transformers"},0,1,0,1,"Scalable",null,{"$f":"'PTRM Data'!B15","v":"Zone Transformers"},0,1,0,1,"Scalable",0,{"$f":"'PTRM Data'!B15","v":"Zone Transformers"},{"$f":"_xlfn.XLOOKUP(Z15,'PTRM Data'!$B$7:$B$37,'PTRM Data'!$C$7:$C$37)","v":354.36593399756219},1,1,1,0,0,1,0,1,1,1,1,0,1,1,1,1,1,1,1]
[null,null,null,null,{"$f":"'Opex costs'!B16","v":"Training"},0.56000000000000005,0.43999999999999995,0.43,0.57000000000000006,"Scalable",null,{"$f":"'PTRM Data'!B16","v":"Distribution Transformers"},0.43,0.57000000000000006,0.43,0.57000000000000006,"Scalable",null,{"$f":"'PTRM Data'!B16","v":"Distribution Transformers"},0.43,0.57000000000000006,0.43,0.57000000000000006,"Scalable",0,{"$f":"'PTRM Data'!B16","v":"Distribution Transformers"},{"$f":"_xlfn.XLOOKUP(Z16,'PTRM Data'!$B$7:$B$37,'PTRM Data'!$C$7:$C$37)","v":1690.1679443134087},1,1,1,0,0,1,0,1,1,1,1,0,1,1,1,1,1,1,1]
[null,null,null,null,{"$f":"'Opex costs'!B17","v":"Debt raising costs"},0,1,0,1,"Non Scalable",null,{"$f":"'PTRM Data'!B17","v":"Low Voltage Services"},0,1,1,0,"Scalable",null,{"$f":"'PTRM Data'!B17","v":"Low Voltage Services"},0,1,1,0,"Scalable",0,{"$f":"'PTRM Data'!B17","v":"Low Voltage Services"},{"$f":"_xlfn.XLOOKUP(Z17,'PTRM Data'!$B$7:$B$37,'PTRM Data'!$C$7:$C$37)","v":387.94239181446198},1,1,1,0,0,1,1,1,1,1,1,1,1,1,1,1,1,1,1]
[null,null,null,null,{"$f":"'Opex costs'!B18","v":"Non-network Alternatives"},1,0,0.8,0.19999999999999996,"Scalable",null,{"$f":"'PTRM Data'!B18","v":"Metering"},0,1,0,1,"Scalable",null,{"$f":"'PTRM Data'!B18","v":"Metering"},0,1,0,1,"Scalable",1,{"$f":"'PTRM Data'!B18","v":"Metering"},{"$f":"_xlfn.XLOOKUP(Z18,'PTRM Data'!$B$7:$B$37,'PTRM Data'!$C$7:$C$37)","v":68.940854379729799},0,0,0,0,1,0,1,1,0,0,1,0,0,0,1,1,1,1,1]
[null,null,null,null,{"$f":"'Opex costs'!B19","v":"Corporate Restructuring"},0,1,0,1,"Non Scalable",null,{"$f":"'PTRM Data'!B19","v":"Communications – Pilot Wires"},0,1,1,0,"Scalable",null,{"$f":"'PTRM Data'!B19","v":"Communications – Pilot Wires"},0,1,1,0,"Scalable",1,{"$f":"'PTRM Data'!B19","v":"Communications – Pilot Wires"},{"$f":"_xlfn.XLOOKUP(Z19,'PTRM Data'!$B$7:$B$37,'PTRM Data'!$C$7:$C$37)","v":194.2753043059993},1,1,1,0,0,1,1,1,1,1,1,0,1,1,1,1,1,1,1]
[null,null,null,null,{"$f":"'Opex costs'!B20","v":"Corporate Allocations"},0,1,0,1,"Scalable"]
[null,null,null,null,"EBSS",0,{"$f":"1-F21","v":1},0,{"$f":"1-H21","v":1},"Non Scalable",null,{"$f":"'PTRM Data'!B21","v":"Land & Easements (System) - combined"},0,1,0,1,"Scalable",null,{"$f":"'PTRM Data'!B21","v":"Land & Easements (System) - combined"},0,1,0,1,"Scalable",1,{"$f":"'PTRM Data'!B21","v":"Land & Easements (System) - combined"},{"$f":"_xlfn.XLOOKUP(Z21,'PTRM Data'!$B$7:$B$37,'PTRM Data'!$C$7:$C$37)","v":119.98157640095687},1,0,0,1,0,0,0,1,0,1,1,0,0,0,1,1,1,1,1]
[null,null,null,null,"CESS",0,{"$f":"1-F22","v":1},0,{"$f":"1-H22","v":1},"Non Scalable",null,{"$f":"'PTRM Data'!B22","v":"Land Improvements"},0,1,0,1,"Scalable",null,{"$f":"'PTRM Data'!B22","v":"Land Improvements"},0,1,0,1,"Scalable",1,{"$f":"'PTRM Data'!B22","v":"Land Improvements"},{"$f":"_xlfn.XLOOKUP(Z22,'PTRM Data'!$B$7:$B$37,'PTRM Data'!$C$7:$C$37)","v":137.69435408314962},0,0,0,0,0,0,0,1,0,0,1,0,0,0,1,1,1,1,1]
[null,null,null,null,"Control period carryover",0,{"$f":"1-F23","v":1},0,{"$f":"1-H23","v":1},"Non Scalable",null,{"$f":"'PTRM Data'!B23","v":"Control Centre - SCADA"},0,1,0,1,"Scalable",null,{"$f":"'PTRM Data'!B23","v":"Control Centre - SCADA"},0,1,0,1,"Scalable",1,{"$f":"'PTRM Data'!B23","v":"Control Centre - SCADA"},{"$f":"_xlfn.XLOOKUP(Z23,'PTRM Data'!$B$7:$B$37,'PTRM Data'!$C$7:$C$37)","v":26.985498615906216},1,0,0,0,0,0,0,1,1,1,1,0,1,1,1,1,1,1,1]
[null,null,null,null,"Shared asset decrements",0,{"$f":"1-F24","v":1},0,{"$f":"1-H24","v":1},"Non Scalable",null,{"$f":"'PTRM Data'!B24","v":"Other Equipment"},0,1,0,1,"Scalable",null,{"$f":"'PTRM Data'!B24","v":"Other Equipment"},0,1,0,1,"Scalable",1,{"$f":"'PTRM Data'!B24","v":"Other Equipment"},{"$f":"_xlfn.XLOOKUP(Z24,'PTRM Data'!$B$7:$B$37,'PTRM Data'!$C$7:$C$37)","v":1.3165870636483477},1,0,1,0,0,0,0,1,1,1,1,1,1,1,1,1,1,1,1]
[null,null,null,null,"DMIA",0,{"$f":"1-F25","v":1},0,{"$f":"1-H25","v":1},"Scalable",null,{"$f":"'PTRM Data'!B25","v":"Generation Assets"},0,1,0,1,"Scalable",null,{"$f":"'PTRM Data'!B25","v":"Generation Assets"},0,1,0,1,"Scalable",1,{"$f":"'PTRM Data'!B25","v":"Generation Assets"},{"$f":"_xlfn.XLOOKUP(Z25,'PTRM Data'!$B$7:$B$37,'PTRM Data'!$C$7:$C$37)","v":14.400649957866881},1,1,1,0,0,1,1,1,1,1,1,1,1,1,1,1,1,1,1]
[null,null,null,null,null,null,null,null,null,null,null,{"$f":"'PTRM Data'!B26","v":"Motor Vehicles"},0,1,0,1,"Scalable",null,{"$f":"'PTRM Data'!B26","v":"Motor Vehicles"},0,1,0,1,"Scalable",1,{"$f":"'PTRM Data'!B26","v":"Motor Vehicles"},{"$f":"_xlfn.XLOOKUP(Z26,'PTRM Data'!$B$7:$B$37,'PTRM Data'!$C$7:$C$37)","v":172.34549175507311},0,0,0,0,0,0,0,1,0,0,1,0,0,0,1,1,1,1,1]
[null,null,null,null,null,null,null,null,null,null,null,{"$f":"'PTRM Data'!B27","v":"Plant & Equipment"},0,1,0,1,"Scalable",null,{"$f":"'PTRM Data'!B27","v":"Plant & Equipment"},0,1,0,1,"Scalable",1,{"$f":"'PTRM Data'!B27","v":"Plant & Equipment"},{"$f":"_xlfn.XLOOKUP(Z27,'PTRM Data'!$B$7:$B$37,'PTRM Data'!$C$7:$C$37)","v":41.384902151101194},0,0,0,0,0,0,0,1,0,0,1,0,0,0,1,1,1,1,1]
[null,null,null,null,null,null,null,null,null,null,null,{"$f":"'PTRM Data'!B28","v":"Buildings"},0,1,0,1,"Scalable",null,{"$f":"'PTRM Data'!B28","v":"Buildings"},0,1,0,1,"Scalable",1,{"$f":"'PTRM Data'!B28","v":"Buildings"},{"$f":"_xlfn.XLOOKUP(Z28,'PTRM Data'!$B$7:$B$37,'PTRM Data'!$C$7:$C$37)","v":411.75057144678505},0,0,0,0,0,0,0,1,0,0,1,0,0,0,1,1,1,1,1]
[null,null,null,null,null,null,null,null,null,null,null,{"$f":"'PTRM Data'!B29","v":"Office Equipment & Furniture"},0,1,0,1,"Scalable",null,{"$f":"'PTRM Data'!B29","v":"Office Equipment & Furniture"},0,1,0,1,"Scalable",1,{"$f":"'PTRM Data'!B29","v":"Office Equipment & Furniture"},{"$f":"_xlfn.XLOOKUP(Z29,'PTRM Data'!$B$7:$B$37,'PTRM Data'!$C$7:$C$37)","v":-9.7819351273368493},1,0,0,0,0,1,0,1,0,0,1,0,0,0,1,1,1,1,1]
[null,null,null,null,null,null,null,null,null,null,null,{"$f":"'PTRM Data'!B30","v":"Initial Leases (10 yr life)"},0,1,0,1,"Scalable",null,{"$f":"'PTRM Data'!B30","v":"Initial Leases (10 yr life)"},0,1,0,1,"Scalable",1,{"$f":"'PTRM Data'!B30","v":"Initial Leases (10 yr life)"},{"$f":"_xlfn.XLOOKUP(Z30,'PTRM Data'!$B$7:$B$37,'PTRM Data'!$C$7:$C$37)","v":53.601926054762309},0,0,0,0,0,0,0,1,0,0,1,0,0,0,1,1,1,1,1]
[null,null,null,null,null,null,null,null,null,null,null,{"$f":"'PTRM Data'!B31","v":"Lease Extensions (5yr Life)"},0,1,0,1,"Scalable",null,{"$f":"'PTRM Data'!B31","v":"Lease Extensions (5yr Life)"},0,1,0,1,"Scalable",1,{"$f":"'PTRM Data'!B31","v":"Lease Extensions (5yr Life)"},{"$f":"_xlfn.XLOOKUP(Z31,'PTRM Data'!$B$7:$B$37,'PTRM Data'!$C$7:$C$37)","v":0},0,0,0,0,0,0,0,1,0,0,1,0,0,0,1,1,1,1,1]
[null,null,null,null,null,null,null,null,null,null,null,{"$f":"'PTRM Data'!B32","v":"Land & Easements - combined"},0,1,0,1,"Scalable",null,{"$f":"'PTRM Data'!B32","v":"Land & Easements - combined"},0,1,0,1,"Scalable",1,{"$f":"'PTRM Data'!B32","v":"Land & Easements - combined"},{"$f":"_xlfn.XLOOKUP(Z32,'PTRM Data'!$B$7:$B$37,'PTRM Data'!$C$7:$C$37)","v":33.850432297626618},0,0,0,0,0,0,0,1,0,0,1,0,0,0,1,1,1,1,1]
[null,null,null,null,null,null,null,null,null,null,null,{"$f":"'PTRM Data'!B33","v":"Communications"},0,{"$f":"1-M33","v":1},0,{"$f":"1-O33","v":1},"Scalable",null,{"$f":"'PTRM Data'!B33","v":"Communications"},0,1,0,1,"Scalable",1,{"$f":"'PTRM Data'!B33","v":"Communications"},{"$f":"_xlfn.XLOOKUP(Z33,'PTRM Data'!$B$7:$B$37,'PTRM Data'!$C$7:$C$37)","v":168.7162641145087},0,0,0,0,0,0,0,1,0,0,1,0,0,0,1,1,1,1,1]
[null,null,null,null,null,null,null,null,null,null,null,{"$f":"'PTRM Data'!B34","v":"In-house software"},0,1,0,1,"Scalable",null,{"$f":"'PTRM Data'!B34","v":"In-house software"},0,1,0,1,"Scalable",1,{"$f":"'PTRM Data'!B34","v":"In-house software"},{"$f":"_xlfn.XLOOKUP(Z34,'PTRM Data'!$B$7:$B$37,'PTRM Data'!$C$7:$C$37)","v":188.87940044100932},0,0,0,0,0,0,0,1,0,0,1,0,0,0,1,1,1,1,1]
[null,null,null,null,null,null,null,null,null,null,null,{"$f":"'PTRM Data'!B35","v":"IT Systems"},0,1,0,1,"Scalable",null,{"$f":"'PTRM Data'!B35","v":"IT Systems"},0,1,0,1,"Scalable",1,{"$f":"'PTRM Data'!B35","v":"IT Systems"},{"$f":"_xlfn.XLOOKUP(Z35,'PTRM Data'!$B$7:$B$37,'PTRM Data'!$C$7:$C$37)","v":7.4007413193786009},0,0,0,0,0,0,0,1,0,0,1,0,0,0,1,1,1,1,1]
[null,null,null,null,null,null,null,null,null,null,null,{"$f":"'PTRM Data'!B36","v":"Legacy ICT Assets"},0,1,0,1,"Scalable",null,{"$f":"'PTRM Data'!B36","v":"Legacy ICT Assets"},0,1,0,1,"Scalable",1,{"$f":"'PTRM Data'!B36","v":"Legacy ICT Assets"},{"$f":"_xlfn.XLOOKUP(Z36,'PTRM Data'!$B$7:$B$37,'PTRM Data'!$C$7:$C$37)","v":80.317017074383813},0,0,0,0,0,0,0,1,0,0,1,0,0,0,1,1,1,1,1]
[null,null,null,null,null,null,null,null,null,null,null,{"$f":"'PTRM Data'!B37","v":"Buildings - capital works"},0,1,0,1,"Scalable",null,{"$f":"'PTRM Data'!B37","v":"Buildings - capital works"},0,1,0,1,"Scalable",1,{"$f":"'PTRM Data'!B37","v":"Buildings - capital works"},{"$f":"_xlfn.XLOOKUP(Z37,'PTRM Data'!$B$7:$B$37,'PTRM Data'!$C$7:$C$37)","v":84.594261180599446},0,0,0,0,0,0,0,1,0,0,1,0,0,0,1,1,1,1,1]
[]
[null,null,null,null,null,null,null,null,null,null,null,null,null,null,null,null,null,null,null,null,null,null,null,null,null,"Total",{"$f":"SUM(AA7:AA37)","v":16242.399954439732},17,13,14,4,1,14,5,30,15,16,30,3,15,15,30,30,30,30,30]

{"sheet":"Allocators","index":9,"n_rows":11,"n_cols":16,"rows_kept":11,"cut":false,"hidden":false,"merged":[[3,5,3,9],[3,11,3,15],[3,1,3,3]]}
[]
[null,"Allocators"]
[]
[null,"Customer Classes",null,null,null,"Customer Numbers",null,null,null,null,null,"Energy (MWh)"]
[]
[null,"Code","Name","Voltage level",null,"2025-26","2026-27","2027-28","2028-29","2029-30",null,"2025-26","2026-27","2027-28","2028-29","2029-30"]
[null,"ICC","Individually Calculated Customer","33kV-132kV",null,116,116,116,116,116,null,3879.0455000000002,3879.0455000000002,3879.0455000000002,3879.0455000000002,3879.0455000000002]
[null,"CAC","Connection Asset Customer","HV-66kV",null,188,188,188,188,188,null,1285.0219,1285.0219,1285.0219,1285.0219,1285.0219]
[null,"SAC","Standard Asset Customer","LV",null,773541,780096,786524,792623,798605,null,8307.4584851999989,8277.1655035816348,8277.9345242940508,8268.6797986781239,8258.8671012136238]
[]
[null,null,null,"Total",null,{"$f":"SUM(F7:F9)","v":773845},{"$f":"SUM(G7:G9)","v":780400},786828,792927,798909,null,{"$f":"SUM(L7:L9)","v":13471.525885199999},{"$f":"SUM(M7:M9)","v":13441.232903581635},13442.001924294051,13432.747198678124,13422.934501213624]

{"sheet":"Opex costs","index":10,"n_rows":25,"n_cols":14,"rows_kept":25,"cut":false,"hidden":false,"merged":[]}
[]
[null,"Operational expenditure"]
[]
[null,"Operational expenditure ",null,null,null,null,null,null,"Percentage allocation*"]
[]
[null,"Asset class","2025-26","2026-27","2027-28","2028-29","2029-30",null,"Asset class","2025-26","2026-27","2027-28","2028-29","2029-30"]
[null,"Preventative Maintenance",{"$f":"C$25*J7","v":79.890880951538819},{"$f":"D$25*K7","v":83.028270247062451},{"$f":"E$25*L7","v":86.006314628071863},{"$f":"F$25*M7","v":87.396571402892022},{"$f":"G$25*N7","v":90.867551422662174},null,{"$f":"B7","v":"Preventative Maintenance"},0.17953568603780626,0.17953568603780626,0.17953568603780626,0.17953568603780626,0.17953568603780626]
[null,"Corrective Maintenance",43.16368026405592,44.85875818537712,46.467744767363016,47.218876788922223,49.094188088432929,null,{"$f":"B8","v":"Corrective Maintenance"},9.7000068791637639E-2,9.7000068791637639E-2,9.7000068791637639E-2,9.7000068791637639E-2,9.7000068791637639E-2]
[null,"Forced Maintenance",83.577913848902455,86.860096359955264,89.975580051582014,91.429998372795112,95.061167107053805,null,"Forced Maintenance",0.18782141242845249,0.18782141242845249,0.18782141242845249,0.18782141242845249,0.18782141242845249]
[null,"Vegetation Management",51.388025866499355,53.406081498774135,55.321642071647588,56.215893709063764,58.448524128375915,null,"Vegetation Management",0.11548232249018389,0.11548232249018389,0.11548232249018389,0.11548232249018389,0.11548232249018389]
[null,"Other Network Maintenance",0,0,0,0,0,null,"Other Network Maintenance",0,0,0,0,0]
[null,"Network Operating Costs",64.118105938294221,66.636083670221836,69.026175791327987,70.141955591320723,72.927663571588511,null,"Network Operating Costs",0.14409013894913952,0.14409013894913952,0.14409013894913952,0.14409013894913952,0.14409013894913952]
[null,"Meter Reading",0,0,0,0,0,null,"Meter Reading",0,0,0,0,0]
[null,"Customer Service (incl Call Centre)",12.835568464608833,13.339633191686408,13.818096967374109,14.041460833237785,14.599121496788035,null,"Customer Service (incl Call Centre)",2.8844876443115394E-2,2.8844876443115394E-2,2.8844876443115394E-2,2.8844876443115394E-2,2.8844876443115394E-2]
[null,"Other Operating Costs",25.500328967263012,26.50175063368264,27.452311079259832,27.896066420102617,29.003966737244269,null,"Other Operating Costs",5.7305902761347949E-2,5.7305902761347949E-2,5.7305902761347949E-2,5.7305902761347949E-2,5.7305902761347949E-2]
[null,"Training",27.183687470421305,28.25121619293337,29.264526182286353,29.737575236449015,30.918611606929684,null,"Training",6.1088849201698568E-2,6.1088849201698568E-2,6.1088849201698568E-2,6.1088849201698568E-2,6.1088849201698568E-2]
[null,"Debt raising costs",6.9602442745801003,7.233579549159729,7.4930323941588917,7.6141541873083245,7.9165525151530476,null,"Debt raising costs",1.5641487688506733E-2,1.5641487688506733E-2,1.5641487688506733E-2,1.5641487688506733E-2,1.5641487688506733E-2]
[null,"Non-network Alternatives",4.2337752749620616,4.4000395728282466,4.5578594706424349,4.6315353982198584,4.8154781613057267,null,"Non-network Alternatives",9.5143993840960967E-3,9.5143993840960967E-3,9.5143993840960967E-3,9.5143993840960967E-3,9.5143993840960967E-3]
[null,"Corporate Restructuring",2.4232056947828369,2.5183672390931973,2.6086956222256283,2.6508641162243136,2.7561439485431793,null,"Corporate Restructuring",5.4455764117491041E-3,5.4455764117491041E-3,5.4455764117491041E-3,5.4455764117491041E-3,5.4455764117491041E-3]
[null,"Corporate Allocations",43.710661878264553,45.427220276967233,47.056596364029403,47.817246929955608,49.716322672059597,null,"Corporate Allocations",9.8229279412266321E-2,9.8229279412266321E-2,9.8229279412266321E-2,9.8229279412266321E-2,9.8229279412266321E-2]
[null,null,null,null,null,null,null,null,"*Based on 2022-23 RIN data"]
[]
[null,"Opex plus revenue adjustments (real)",{"$f":"SUM('PTRM Revenue data'!C$9:C$10)/'PTRM Revenue data'!J$8","v":277.29930932929648},{"$f":"SUM('PTRM Revenue data'!D$9:D$10)/'PTRM Revenue data'!K$8","v":281.21998170556884},{"$f":"SUM('PTRM Revenue data'!E$9:E$10)/'PTRM Revenue data'!L$8","v":293.24809194066972},{"$f":"SUM('PTRM Revenue data'!F$9:F$10)/'PTRM Revenue data'!M$8","v":348.04696305830197},{"$f":"SUM('PTRM Revenue data'!G$9:G$10)/'PTRM Revenue data'!N$8","v":382.6215636157188}]
[null,"Other PTRM cost components (real)",{"$f":"SUM('PTRM Revenue data'!Q$7:Q$11)","v":-167.68676956487701},{"$f":"SUM('PTRM Revenue data'!R$7:R$11)","v":-181.2411149121728},{"$f":"SUM('PTRM Revenue data'!S$7:S$11)","v":-185.80048344929941},{"$f":"SUM('PTRM Revenue data'!T$7:T$11)","v":-138.74523592818937},{"$f":"SUM('PTRM Revenue data'!U$7:U$11)","v":-123.50372784041811}]
[null,"Target opex (real)",{"$f":"C23-C24","v":444.98607889417349},{"$f":"D23-D24","v":462.46109661774165},479.04857538996913,486.79219898649137,506.12529145613689,null,"Total",{"$f":"SUM(J7:J20)","v":1},{"$f":"SUM(K7:K20)","v":1},{"$f":"SUM(L7:L20)","v":1},{"$f":"SUM(M7:M20)","v":1},{"$f":"SUM(N7:N20)","v":1}]

{"sheet":"PTRM Input","index":11,"n_rows":623,"n_cols":65,"rows_kept":623,"cut":false,"hidden":false,"merged":[[594,23,594,28],[594,29,594,34],[560,23,560,28],[560,29,560,34],[560,35,560,40],[560,41,560,46],[560,47,560,52],[560,53,560,58],[560,59,560,64],[594,35,594,40],[594,41,594,46],[594,47,594,52],[594,53,594,58],[594,59,594,64]]}
[]
[null,null,null,null,"Ergon - PTRM input - DNSP PTRM - version 5",null,null,null,"Input cells are in blue"]
[]
[]
[null,null,null,null,{"$f":"\"Opening Regulatory Asset Base and Opening Tax Asset Base for \"&Q7&\" ($m Nominal)\"","v":"Opening Regulatory Asset Base and Opening Tax Asset Base for 2025-26 ($m Nominal)"}]
[null,null,null,null,null,null,"Asset Class Name",null,null,"Opening Asset Value","Assets Under Construction","Remaining Life","Standard Life","Opening Tax Value","Tax Remaining Life","Tax Standard Life","Base Regulatory Year","Length of Regulatory Control Period (Year)"]
[null,null,null,null,"Asset Class 1",null,"Overhead Sub-Transmission Lines",null,null,1558.9719826140117,null,31.866912118603846,55,473.26972834982848,29.984132885714146,45.000000000000007,"2025-26",5]
[null,null,null,null,"Asset Class 2",null,"Underground Sub-Transmission Cables",null,null,68.738289722444975,null,26.540010363448914,45.000000000000007,49.854801027402686,32.311338628338788,50]
[null,null,null,null,"Asset Class 3",null,"Overhead Distribution Lines",null,null,6391.7590742637421,null,36.527676098871382,50,3107.7849808399601,35.147376178929683,45]
[null,null,null,null,"Asset Class 4",null,"Underground Distribution Cables",null,null,1130.2190906603334,null,41.466739175126101,60,572.71639025441846,33.562041328037274,50.000000000000007]
[null,null,null,null,"Asset Class 5",null,"Distribution Equipment",null,null,23.907334258452106,null,21.51426590090313,35,31.486599087620196,36.141816594949944,45]
[null,null,null,null,"Asset Class 6",null,"Substation Bays",null,null,1739.6024985014967,null,29.648733879661243,45,873.07525284420581,31.232297033625223,40]
[null,null,null,null,"Asset Class 7",null,"Substation Establishment",null,null,439.10496114383687,null,34.536195743513026,60,172.90209948102722,30.773941725740265,40]
[null,null,null,null,"Asset Class 8",null,"Distribution Substation Switchgear",null,null,660.96655563483523,null,34.162535219132835,45,364.31487988063174,31.256696220444169,40]
[null,null,null,null,"Asset Class 9",null,"Zone Transformers",null,null,354.36593399756219,null,26.650539705033061,50,181.88229825929938,21.505531761262674,39.999999999999993]
[null,null,null,null,"Asset Class 10",null,"Distribution Transformers",null,null,1690.1679443134087,null,28.413447143643097,44.999999999999993,1079.3448778070792,27.684402941907521,40]
[null,null,null,null,"Asset Class 11",null,"Low Voltage Services",null,null,387.94239181446198,null,29.407498624332554,35.000000000000007,286.67906393079988,29.65365459694922,40]
[null,null,null,null,"Asset Class 12",null,"Metering",null,null,68.940854379729799,null,14.365046141036592,24.999999999999996,45.391094764049015,14.468164546351137,25]
[null,null,null,null,"Asset Class 13",null,"Communications – Pilot Wires",null,null,194.2753043059993,null,25.099969459428614,35,21.227768679211998,7.4213632746793179,10]
[null,null,null,null,"Asset Class 14",null,"Land & Easements (System) - combined",null,null,119.98157640095687,null,"n/a","N/A",47.845710263697768,"n/a","N/A"]
[null,null,null,null,"Asset Class 15",null,"Land Improvements",null,null,137.69435408314962,null,27.89646164821853,40,86.647938072598549,27.734403672130874,40.000000000000007]
[null,null,null,null,"Asset Class 16",null,"Control Centre - SCADA",null,null,26.985498615906216,null,5.1620151990303702,7.0000000000000009,6.6402024439181879,8.1738853786142815,10]
[null,null,null,null,"Asset Class 17",null,"Other Equipment",null,null,1.3165870636483477,null,27.162015112033092,40,12.448514934126035,27.595502933994979,40]
[null,null,null,null,"Asset Class 18",null,"Generation Assets",null,null,14.400649957866881,null,21.485480444722629,30.000000000000004,6.4823545389929738,6.5059240336149866,15]
[null,null,null,null,"Asset Class 19",null,"Motor Vehicles",null,null,172.34549175507311,null,7.8045085007476125,10,95.284155155888016,9.791752410910572,13.5]
[null,null,null,null,"Asset Class 20",null,"Plant & Equipment",null,null,41.384902151101194,null,5.2912622205604087,10,2.9592667584000001,3.8792932802560602,5]
[null,null,null,null,"Asset Class 21",null,"Buildings",null,null,411.75057144678505,null,30.284149706497018,40,349.70880162953915,27.033756276629557,40]
[null,null,null,null,"Asset Class 22",null,"Office Equipment & Furniture",null,null,-9.7819351273368493,null,5,7.0000000000000009,-8.8817841970012523E-16,5,10]
[null,null,null,null,"Asset Class 23",null,"Initial Leases (10 yr life)",null,null,53.601926054762309,null,4.3328624107781888,10,53.601926054762309,4.3328624107781888,10]
[null,null,null,null,"Asset Class 24",null,"Lease Extensions (5yr Life)",null,null,0,null,0,5,0,0,5]
[null,null,null,null,"Asset Class 25",null,"Land & Easements - combined",null,null,33.850432297626618,null,"n/a","N/A",36.448105006227863,"n/a","N/A"]
[null,null,null,null,"Asset Class 26",null,"Communications",null,null,168.7162641145087,null,18.171391919565586,30.000000000000004,1.0441827583999927,6.4108770843816894,10]
[null,null,null,null,"Asset Class 27",null,"In-house software",null,null,188.87940044100932,null,4.0321643741236182,5,-33.5480254,5,5]
[null,null,null,null,"Asset Class 28",null,"IT Systems",null,null,7.4007413193786009,null,2.8081828497077219,5,12.990573564799998,2.8484277890034728,5]
[null,null,null,null,"Asset Class 29",null,"Legacy ICT Assets",null,null,80.317017074383813,null,5,10,-1.0658141036401503E-14,5,5]
[null,null,null,null,"Asset Class 30",null,"Buildings - capital works",null,null,84.594261180599446,null,37.045009060785922,40,68.399176425000007,37.049256020702153,40]
[null,null,null,null,"Asset Class 31"]
[null,null,null,null,"Asset Class 32"]
[null,null,null,null,"Asset Class 33"]
[null,null,null,null,"Asset Class 34"]
[null,null,null,null,"Asset Class 35"]
[null,null,null,null,"Asset Class 36"]
[null,null,null,null,"Asset Class 37"]
[null,null,null,null,"Asset Class 38"]
[null,null,null,null,"Asset Class 39"]
[null,null,null,null,"Asset Class 40"]
[null,null,null,null,"Asset Class 41"]
[null,null,null,null,"Asset Class 42"]
[null,null,null,null,"Asset Class 43"]
[null,null,null,null,"Asset Class 44"]
[null,null,null,null,"Asset Class 45"]
[null,null,null,null,"Asset Class 46"]
[null,null,null,null,"Asset Class 47"]
[null,null,null,null,"Asset Class 48"]
[null,null,null,null,"Asset Class 49"]
[null,null,null,null,"Asset Class 50",null,"Equity raising costs",null,null,8.2705587622133212,null,33.977745119053942,47.858264156245511,0,0,0]
[null,null,null,null,"Total",null,null,null,null,{"$f":"SUM(J7:J56)+K57","v":16250.670513201945},{"$f":"SUM(K7:K56)","v":0},null,null,{"$f":"SUM(N7:N56)","v":8006.8827174118851}]
[]
[null,null,null,null,{"$f":"\"Forecast Capital Expenditure – As Incurred ($m Real \"&$F$525&\")\"","v":"Forecast Capital Expenditure – As Incurred ($m Real 2024-25)"}]
[null,null,null,null,"Year",null,{"$f":"Q7","v":"2025-26"},{"$f":"(LEFT(G60,4)+1&IF(MID(G60,5,1)=\"\",\"\",\"-\"&TEXT(MOD(MID(G60,6,2)+1,100),\"00\")))","v":"2026-27"},{"$f":"(LEFT(H60,4)+1&IF(MID(H60,5,1)=\"\",\"\",\"-\"&TEXT(MOD(MID(H60,6,2)+1,100),\"00\")))","v":"2027-28"},"2028-29","2029-30","2030-31","2031-32","2032-33","2033-34","2034-35"]
[null,null,null,null,{"$f":"Asset1","v":"Overhead Sub-Transmission Lines"},null,80.967667523032958,82.977405563266004,85.740937553819137,88.03665257704084,91.56480027070883]
[null,null,null,null,{"$f":"Asset2","v":"Underground Sub-Transmission Cables"},null,5.0892053332314706,5.2446180740964348,5.4063100045329442,5.5099212587257389,5.7082814382700189]
[null,null,null,null,{"$f":"Asset3","v":"Overhead Distribution Lines"},null,460.74913478026906,470.57895158764836,486.96817658515488,502.27901960306656,523.6484529712335]
[null,null,null,null,{"$f":"Asset4","v":"Underground Distribution Cables"},null,29.633282237111938,30.470350702393244,31.439861519299491,32.138078289986815,33.347674379023772]
[null,null,null,null,{"$f":"Asset5","v":"Distribution Equipment"},null,3.5377059676964886,3.6469944487863697,3.758874759428116,3.8291438204581252,3.9660222346195115]
[null,null,null,null,{"$f":"Asset6","v":"Substation Bays"},null,104.5635854580291,107.13478828032964,110.71367853204178,113.71229429052107,118.28811206281428]
[null,null,null,null,{"$f":"Asset7","v":"Substation Establishment"},null,49.814450003588647,51.245877777096148,52.865627601211216,54.005380150896968,56.019209062938778]
[null,null,null,null,{"$f":"Asset8","v":"Distribution Substation Switchgear"},null,53.00918884875945,54.49156745799683,56.232060127877141,57.502039882963324,59.677881328127]
[null,null,null,null,{"$f":"Asset9","v":"Zone Transformers"},null,15.835928352779415,16.243868099349879,16.778231035512754,17.206440406370486,17.884527260437142]
[null,null,null,null,{"$f":"Asset10","v":"Distribution Transformers"},null,101.69144931236255,104.15764758077417,107.65242571777584,110.6167570340679,115.09454145533772]
[null,null,null,null,{"$f":"Asset11","v":"Low Voltage Services"},null,36.028570189005116,36.737002402588772,38.0434265962528,39.324883649516153,41.044318015867546]
[null,null,null,null,{"$f":"Asset12","v":"Metering"},null,2.4309218512354156,2.5066208322186228,2.5832505511551527,2.6306940376259038,2.724265460966087]
[null,null,null,null,{"$f":"Asset13","v":"Communications – Pilot Wires"},null,13.521436745776354,13.831654981425082,14.303646404147312,14.722554937515618,15.332183332200401]
[null,null,null,null,{"$f":"Asset14","v":"Land & Easements (System) - combined"},null,0.50443342277117775,0.52047512977176091,0.53623860681226343,0.54561685896902001,0.56476521421434867]
[null,null,null,null,{"$f":"Asset15","v":"Land Improvements"},null,0.50443342277117775,0.52047512977176091,0.53623860681226343,0.54561685896902001,0.56476521421434867]
[null,null,null,null,{"$f":"Asset16","v":"Control Centre - SCADA"},null,4.6112949931598095,4.7539212346473745,4.8996829268397404,4.9910360976860417,5.1693147486047701]
[null,null,null,null,{"$f":"Asset17","v":"Other Equipment"},null,0,0,0,0,0]
[null,null,null,null,{"$f":"Asset18","v":"Generation Assets"},null,0,0,0,0,0]
[null,null,null,null,{"$f":"Asset19","v":"Motor Vehicles"},null,57.766948923607963,56.361718988507477,44.07574295977011,36.041547311253112,48.78732621313425]
[null,null,null,null,{"$f":"Asset20","v":"Plant & Equipment"},null,6.7027241606608854,6.3015922235622837,6.4434787097060555,6.1906933145391392,6.0380830391214086]
[null,null,null,null,{"$f":"Asset21","v":"Buildings"},null,30.038461355199413,24.426712160576898,29.374689094000061,33.168066401497917,31.044147653549953]
[null,null,null,null,{"$f":"Asset22","v":"Office Equipment & Furniture"},null,1.8495018668806433,1.5039801542605737,1.8086326618386452,2.0421951712174939,1.9114231039340739]
[null,null,null,null,{"$f":"Asset23","v":"Initial Leases (10 yr life)"},null,0,0,0,0,0]
[null,null,null,null,{"$f":"Asset24","v":"Lease Extensions (5yr Life)"},null,0,0,0,14.726128208950167,2.5412720053902742]
[null,null,null,null,{"$f":"Asset25","v":"Land & Easements - combined"},null,0,0,0,0,0]
[null,null,null,null,{"$f":"Asset26","v":"Communications"},null,0,0,0,0,0]
[null,null,null,null,{"$f":"Asset27","v":"In-house software"},null,77.371301269882949,63.537722128642869,48.243315048007673,37.658108535687354,47.282318113946616]
[null,null,null,null,{"$f":"Asset28","v":"IT Systems"},null,3.286948268336519,3.1082514738895042,2.4128399791354527,1.8208975108840137,2.2876883424921051]
[null,null,null,null,{"$f":"Asset29","v":"Legacy ICT Assets"},null,0,0,0,0,0]
[null,null,null,null,{"$f":"Asset30","v":"Buildings - capital works"},null,0,0,0,0,0]
[null,null,null,null,{"$f":"Asset31","v":0},null,0,0,0,0,0]
[null,null,null,null,{"$f":"Asset32","v":0},null,0,0,0,0,0]
[null,null,null,null,{"$f":"Asset33","v":0},null,0,0,0,0,0]
[null,null,null,null,{"$f":"Asset34","v":0},null,0,0,0,0,0]
[null,null,null,null,{"$f":"Asset35","v":0},null,0,0,0,0,0]
[null,null,null,null,{"$f":"Asset36","v":0},null,0,0,0,0,0]
[null,null,null,null,{"$f":"Asset37","v":0},null,0,0,0,0,0]
[null,null,null,null,{"$f":"Asset38","v":0},null,0,0,0,0,0]
[null,null,null,null,{"$f":"Asset39","v":0},null,0,0,0,0,0]
[null,null,null,null,{"$f":"Asset40","v":0},null,0,0,0,0,0]
[null,null,null,null,{"$f":"Asset41","v":0},null,0,0,0,0,0]
[null,null,null,null,{"$f":"Asset42","v":0},null,0,0,0,0,0]
[null,null,null,null,{"$f":"Asset43","v":0},null,0,0,0,0,0]
[null,null,null,null,{"$f":"Asset44","v":0},null,0,0,0,0,0]
[null,null,null,null,{"$f":"Asset45","v":0},null,0,0,0,0,0]
[null,null,null,null,{"$f":"Asset46","v":0},null,0,0,0,0,0]
[null,null,null,null,{"$f":"Asset47","v":0},null,0,0,0,0,0]
[null,null,null,null,{"$f":"Asset48","v":0},null,0,0,0,0,0]
[null,null,null,null,{"$f":"Asset49","v":0},null,0,0,0,0,0]
[null,null,null,null,{"$f":"Asset50","v":"Equity raising costs"},null,0,0,0,0,0]
[null,null,null,null,"Total",null,{"$f":"SUM(G61:G110)","v":1139.5085742861488},1140.3021964115999,1150.8173655811308,1179.2437662084087,1230.4913729211466,0,{"$f":"SUM(M61:M110)","v":0},0,0,0]
[null,null,null,null,null,null,null,null,null,null,null,null,null,null,null,null,{"$f":"SUM(OFFSET(G111,0,0,1,$R$7))","v":5840.3632754084347}]
[null,null,null,null,{"$f":"\"Forecast Immediate Expensing of Capital Expenditure - As Incurred ($m Real \"&$F$525&\")\"","v":"Forecast Immediate Expensing of Capital Expenditure - As Incurred ($m Real 2024-25)"}]
[null,null,null,null,{"$f":"E$60","v":"Year"},null,{"$f":"G$60","v":"2025-26"},{"$f":"H$60","v":"2026-27"},"2027-28","2028-29","2029-30","2030-31","2031-32","2032-33","2033-34","2034-35"]
[null,null,null,null,{"$f":"Asset1","v":"Overhead Sub-Transmission Lines"},null,21.422222489531947,21.428564273152464,21.779722913025708,21.99381902884658,22.596477119208728]
[null,null,null,null,{"$f":"Asset2","v":"Underground Sub-Transmission Cables"},null,1.3655441857252895,1.365591458025446,1.3877795540177142,1.4012505752528071,1.4396845333336876]
[null,null,null,null,{"$f":"Asset3","v":"Overhead Distribution Lines"},null,120.851468526435,120.90696065116609,122.89882848159546,124.1163730744217,127.51522102728502]
[null,null,null,null,{"$f":"Asset4","v":"Underground Distribution Cables"},null,7.9068004086148518,7.9078952780255642,8.0368206717253852,8.1152265667664274,8.3377263235147225]
[null,null,null,null,{"$f":"Asset5","v":"Distribution Equipment"},null,0.95006528868156748,0.95008299264224894,0.9655118156365301,0.97487665652312094,1.0016175065050894]
[null,null,null,null,{"$f":"Asset6","v":"Substation Bays"},null,27.64930625145384,27.657788705140099,28.111186724842629,28.387663874741268,29.165489702106516]
[null,null,null,null,{"$f":"Asset7","v":"Substation Establishment"},null,12.752941642223421,12.770176931874174,12.995258595749238,13.133209224180455,13.5126907758734]
[null,null,null,null,{"$f":"Asset8","v":"Distribution Substation Switchgear"},null,14.134170824814312,14.136310560256666,14.366877538773162,14.507125860178778,14.904856525687096]
[null,null,null,null,{"$f":"Asset9","v":"Zone Transformers"},null,4.1995692162936011,4.2006299944930294,4.269370116835006,4.3112509381948856,4.4294039873752293]
[null,null,null,null,{"$f":"Asset10","v":"Distribution Transformers"},null,26.867320705329945,26.875985368581656,27.316792324138547,27.585658632160207,28.341464541955542]
[null,null,null,null,{"$f":"Asset11","v":"Low Voltage Services"},null,9.4106145441358766,9.4156810335790428,9.5711960902034114,9.6663736654346497,9.9310019629036024]
[null,null,null,null,{"$f":"Asset12","v":"Metering"},null,0.65322810822006616,0.65323300540747531,0.66383726690337996,0.67027257419270603,0.68865891314470773]
[null,null,null,null,{"$f":"Asset13","v":"Communications – Pilot Wires"},null,3.5608279552366287,3.5621938291188884,3.620735231114669,3.656476575118401,3.7566354622905753]
[null,null,null,null,{"$f":"Asset14","v":"Land & Easements (System) - combined"},null,0.13576797247945316,0.13576495930388632,0.13796674977913539,0.13930228261420566,0.14312393134640997]
[null,null,null,null,{"$f":"Asset15","v":"Land Improvements"},null,0.13576797247945316,0.13576495930388632,0.13796674977913539,0.13930228261420566,0.14312393134640997]
[null,null,null,null,{"$f":"Asset16","v":"Control Centre - SCADA"},null,1.2384946005317559,1.2385156005417681,1.258627300712837,1.2708341766342273,1.3056933573862648]
[null,null,null,null,{"$f":"Asset17","v":"Other Equipment"},null,0,0,0,0,0]
[null,null,null,null,{"$f":"Asset18","v":"Generation Assets"},null,0,0,0,0,0]
[null,null,null,null,{"$f":"Asset19","v":"Motor Vehicles"},null,0,0,0,0,0]
[null,null,null,null,{"$f":"Asset20","v":"Plant & Equipment"},null,0,0,0,0,0]
[null,null,null,null,{"$f":"Asset21","v":"Buildings"},null,0,0,0,0,0]
[null,null,null,null,{"$f":"Asset22","v":"Office Equipment & Furniture"},null,0,0,0,0,0]
[null,null,null,null,{"$f":"Asset23","v":"Initial Leases (10 yr life)"},null,0,0,0,0,0]
[null,null,null,null,{"$f":"Asset24","v":"Lease Extensions (5yr Life)"},null,0,0,0,0,0]
[null,null,null,null,{"$f":"Asset25","v":"Land & Easements - combined"},null,0,0,0,0,0]
[null,null,null,null,{"$f":"Asset26","v":"Communications"},null,0,0,0,0,0]
[null,null,null,null,{"$f":"Asset27","v":"In-house software"},null,0,0,0,0,0]
[null,null,null,null,{"$f":"Asset28","v":"IT Systems"},null,0,0,0,0,0]
[null,null,null,null,{"$f":"Asset29","v":"Legacy ICT Assets"},null,0,0,0,0,0]
[null,null,null,null,{"$f":"Asset30","v":"Buildings - capital works"},null,0,0,0,0,0]
[null,null,null,null,{"$f":"Asset31","v":0},null,0,0,0,0,0]
[null,null,null,null,{"$f":"Asset32","v":0},null,0,0,0,0,0]
[null,null,null,null,{"$f":"Asset33","v":0},null,0,0,0,0,0]
[null,null,null,null,{"$f":"Asset34","v":0},null,0,0,0,0,0]
[null,null,null,null,{"$f":"Asset35","v":0},null,0,0,0,0,0]
[null,null,null,null,{"$f":"Asset36","v":0},null,0,0,0,0,0]
[null,null,null,null,{"$f":"Asset37","v":0},null,0,0,0,0,0]
[null,null,null,null,{"$f":"Asset38","v":0},null,0,0,0,0,0]
[null,null,null,null,{"$f":"Asset39","v":0},null,0,0,0,0,0]
[null,null,null,null,{"$f":"Asset40","v":0},null,0,0,0,0,0]
[null,null,null,null,{"$f":"Asset41","v":0},null,0,0,0,0,0]
[null,null,null,null,{"$f":"Asset42","v":0},null,0,0,0,0,0]
[null,null,null,null,{"$f":"Asset43","v":0},null,0,0,0,0,0]
[null,null,null,null,{"$f":"Asset44","v":0},null,0,0,0,0,0]
[null,null,null,null,{"$f":"Asset45","v":0},null,0,0,0,0,0]
[null,null,null,null,{"$f":"Asset46","v":0},null,0,0,0,0,0]
[null,null,null,null,{"$f":"Asset47","v":0},null,0,0,0,0,0]
[null,null,null,null,{"$f":"Asset48","v":0},null,0,0,0,0,0]
[null,null,null,null,{"$f":"Asset49","v":0},null,0,0,0,0,0]
[null,null,null,null,{"$f":"Asset50","v":"Equity raising costs"},null,0,0,0,0,0]
[null,null,null,null,"Total",null,{"$f":"SUM(G115:G164)","v":253.23411069218702},253.34113960061239,257.51847812483197,260.06901598787465,267.21286960126298,0,0,0,0,0]
[null,null,null,null,null,null,null,null,null,null,null,null,null,null,null,null,{"$f":"SUM(OFFSET(G165,0,0,1,$R$7))","v":1291.3756140067692}]
[null,null,null,null,{"$f":"\"Forecast Asset Disposal – As Incurred ($m Real \"&$F$525&\")\"","v":"Forecast Asset Disposal – As Incurred ($m Real 2024-25)"}]
[null,null,null,null,{"$f":"E60","v":"Year"},null,{"$f":"G60","v":"2025-26"},"2026-27","2027-28","2028-29","2029-30","2030-31","2031-32","2032-33","2033-34","2034-35"]
[null,null,null,null,{"$f":"Asset1","v":"Overhead Sub-Transmission Lines"},null,0,0,0,0,0]
[null,null,null,null,{"$f":"Asset2","v":"Underground Sub-Transmission Cables"},null,0,0,0,0,0]
[null,null,null,null,{"$f":"Asset3","v":"Overhead Distribution Lines"},null,0,0,0,0,0]
[null,null,null,null,{"$f":"Asset4","v":"Underground Distribution Cables"},null,0,0,0,0,0]
[null,null,null,null,{"$f":"Asset5","v":"Distribution Equipment"},null,0,0,0,0,0]
[null,null,null,null,{"$f":"Asset6","v":"Substation Bays"},null,0,0,0,0,0]
[null,null,null,null,{"$f":"Asset7","v":"Substation Establishment"},null,2.0758363268418312,2.0748310963594405,2.0738263490786784,2.0738263490786784,2.0738263490786784]
[null,null,null,null,{"$f":"Asset8","v":"Distribution Substation Switchgear"},null,0,0,0,0,0]
[null,null,null,null,{"$f":"Asset9","v":"Zone Transformers"},null,0,0,0,0,0]
[null,null,null,null,{"$f":"Asset10","v":"Distribution Transformers"},null,0,0,0,0,0]
[null,null,null,null,{"$f":"Asset11","v":"Low Voltage Services"},null,0,0,0,0,0]
[null,null,null,null,{"$f":"Asset12","v":"Metering"},null,0,0,0,0,0]
[null,null,null,null,{"$f":"Asset13","v":"Communications – Pilot Wires"},null,0,0,0,0,0]
[null,null,null,null,{"$f":"Asset14","v":"Land & Easements (System) - combined"},null,0,0,0,0,0]
[null,null,null,null,{"$f":"Asset15","v":"Land Improvements"},null,0,0,0,0,0]
[null,null,null,null,{"$f":"Asset16","v":"Control Centre - SCADA"},null,0,0,0,0,0]
[null,null,null,null,{"$f":"Asset17","v":"Other Equipment"},null,0,0,0,0,0]
[null,null,null,null,{"$f":"Asset18","v":"Generation Assets"},null,0,0,0,0,0]
[null,null,null,null,{"$f":"Asset19","v":"Motor Vehicles"},null,0.98904332743862544,0.67028134178339271,0.80951077942335736,0.80951077942335736,0.80951077942335736]
[null,null,null,null,{"$f":"Asset20","v":"Plant & Equipment"},null,0,0,0,0,0]
[null,null,null,null,{"$f":"Asset21","v":"Buildings"},null,0,0,0,0,0]
[null,null,null,null,{"$f":"Asset22","v":"Office Equipment & Furniture"},null,0,0,0,0,0]
[null,null,null,null,{"$f":"Asset23","v":"Initial Leases (10 yr life)"},null,0,0,0,0,0]
[null,null,null,null,{"$f":"Asset24","v":"Lease Extensions (5yr Life)"},null,0,0,0,0,0]
[null,null,null,null,{"$f":"Asset25","v":"Land & Easements - combined"},null,0,0,4.281433585064601,0,2.3887582896961379]
[null,null,null,null,{"$f":"Asset26","v":"Communications"},null,0,0,0,0,0]
[null,null,null,null,{"$f":"Asset27","v":"In-house software"},null,0,0,0,0,0]
[null,null,null,null,{"$f":"Asset28","v":"IT Systems"},null,0,0,0,0,0]
[null,null,null,null,{"$f":"Asset29","v":"Legacy ICT Assets"},null,0,0,0,0,0]
[null,null,null,null,{"$f":"Asset30","v":"Buildings - capital works"},null,0,0,0,0,0]
[null,null,null,null,{"$f":"Asset31","v":0},null,0,0,0,0,0]
[null,null,null,null,{"$f":"Asset32","v":0},null,0,0,0,0,0]
[null,null,null,null,{"$f":"Asset33","v":0},null,0,0,0,0,0]
[null,null,null,null,{"$f":"Asset34","v":0},null,0,0,0,0,0]
[null,null,null,null,{"$f":"Asset35","v":0},null,0,0,0,0,0]
[null,null,null,null,{"$f":"Asset36","v":0},null,0,0,0,0,0]
[null,null,null,null,{"$f":"Asset37","v":0},null,0,0,0,0,0]
[null,null,null,null,{"$f":"Asset38","v":0},null,0,0,0,0,0]
[null,null,null,null,{"$f":"Asset39","v":0},null,0,0,0,0,0]
[null,null,null,null,{"$f":"Asset40","v":0},null,0,0,0,0,0]
[null,null,null,null,{"$f":"Asset41","v":0},null,0,0,0,0,0]
[null,null,null,null,{"$f":"Asset42","v":0},null,0,0,0,0,0]
[null,null,null,null,{"$f":"Asset43","v":0},null,0,0,0,0,0]
[null,null,null,null,{"$f":"Asset44","v":0},null,0,0,0,0,0]
[null,null,null,null,{"$f":"Asset45","v":0},null,0,0,0,0,0]
[null,null,null,null,{"$f":"Asset46","v":0},null,0,0,0,0,0]
[null,null,null,null,{"$f":"Asset47","v":0},null,0,0,0,0,0]
[null,null,null,null,{"$f":"Asset48","v":0},null,0,0,0,0,0]
[null,null,null,null,{"$f":"Asset49","v":0},null,0,0,0,0,0]
[null,null,null,null,{"$f":"Asset50","v":"Equity raising costs"},null,0,0,0,0,0]
[null,null,null,null,"Total",null,{"$f":"SUM(G169:G218)","v":3.0648796542804568},2.7451124381428333,7.1647707135666368,{"$f":"SUM(J169:J218)","v":2.8833371285020357},5.2720954181981732,0,0,0,0,0]
[null,null,null,null,null,null,null,null,null,null,null,null,null,null,null,null,{"$f":"SUM(OFFSET(G219,0,0,1,$R$7))","v":21.130195352690134}]
[null,null,null,null,{"$f":"\"Forecast Capital Contributions – As Incurred ($m Real \"&$F$525&\")\"","v":"Forecast Capital Contributions – As Incurred ($m Real 2024-25)"}]
[null,null,null,null,{"$f":"E60","v":"Year"},null,{"$f":"G168","v":"2025-26"},{"$f":"H168","v":"2026-27"},"2027-28","2028-29","2029-30","2030-31","2031-32","2032-33","2033-34","2034-35"]
[null,null,null,null,{"$f":"Asset1","v":"Overhead Sub-Transmission Lines"},null,2.6662771053714565,2.5461776778649532,2.5286293759592029,2.5031051000969455,2.4865663396760285]
[null,null,null,null,{"$f":"Asset2","v":"Underground Sub-Transmission Cables"},null,0.34365349358120995,0.32817401181370509,0.32591223067918612,0.32262243512360639,0.32049077266935477]
[null,null,null,null,{"$f":"Asset3","v":"Overhead Distribution Lines"},null,5.4486853913324254,5.2032555390324688,5.1673946091824057,5.115234333442559,5.0814364577023898]
[null,null,null,null,{"$f":"Asset4","v":"Underground Distribution Cables"},null,1.59028616684822,1.5186535305310078,1.5081869433498891,1.4929631308133788,1.4830986790423246]
[null,null,null,null,{"$f":"Asset5","v":"Distribution Equipment"},null,0.24648250574100578,0.23537998088707121,0.23375773786645071,0.23139816036451766,0.22986924384560614]
[null,null,null,null,{"$f":"Asset6","v":"Substation Bays"},null,3.296703514285952,3.1482072443645777,3.1265097439637786,3.0949503948754238,3.0745011364349821]
[null,null,null,null,{"$f":"Asset7","v":"Substation Establishment"},null,2.8203286714595848,2.6932901659193726,2.674727962125734,2.647728950324769,2.6302346170795321]
[null,null,null,null,{"$f":"Asset8","v":"Distribution Substation Switchgear"},null,2.7539679968370065,2.6299186326036228,2.6117931865463051,2.5854294456112452,2.568346743736484]
[null,null,null,null,{"$f":"Asset9","v":"Zone Transformers"},null,0.61146621616518737,0.58392341412369586,0.57989900355331048,0.57404543628889959,0.57025254723236918]
[null,null,null,null,{"$f":"Asset10","v":"Distribution Transformers"},null,2.9980804784843493,2.8630353444437033,2.8433032538563476,2.814602623664566,2.7960057063912673]
[null,null,null,null,{"$f":"Asset11","v":"Low Voltage Services"},null,6.1620626435251444E-2,5.8844995221767803E-2,5.8439434466612677E-2,5.7849540091129414E-2,5.7467310961401535E-2]
[null,null,null,null,{"$f":"Asset12","v":"Metering"},null,0.17301175883743675,0.16521864043034806,0.16407995061779715,0.16242370871740183,0.16135052693008894]
[null,null,null,null,{"$f":"Asset13","v":"Communications – Pilot Wires"},null,0.29151296352061257,0.27838209277990156,0.27646347843820618,0.27367282427726614,0.27186458647124578]
[null,null,null,null,{"$f":"Asset14","v":"Land & Easements (System) - combined"},null,3.7920385498616274E-2,3.6212304751857112E-2,3.5962728902530883E-2,3.5599716979156565E-2,3.5364499053170184E-2]
[null,null,null,null,{"$f":"Asset15","v":"Land Improvements"},null,3.7920385498616274E-2,3.6212304751857112E-2,3.5962728902530883E-2,3.5599716979156565E-2,3.5364499053170184E-2]
[null,null,null,null,{"$f":"Asset16","v":"Control Centre - SCADA"},null,0.32232327673823824,0.30780459039078545,0.30568319567151248,0.30259759432283079,0.30059824195194651]
[null,null,null,null,{"$f":"Asset17","v":"Other Equipment"},null,0,0,0,0,0]
[null,null,null,null,{"$f":"Asset18","v":"Generation Assets"},null,0,0,0,0,0]
[null,null,null,null,{"$f":"Asset19","v":"Motor Vehicles"},null,0,0,0,0,0]
[null,null,null,null,{"$f":"Asset20","v":"Plant & Equipment"},null,0,0,0,0,0]
[null,null,null,null,{"$f":"Asset21","v":"Buildings"},null,0,0,0,0,0]
[null,null,null,null,{"$f":"Asset22","v":"Office Equipment & Furniture"},null,0,0,0,0,0]
[null,null,null,null,{"$f":"Asset23","v":"Initial Leases (10 yr life)"},null,0,0,0,0,0]
[null,null,null,null,{"$f":"Asset24","v":"Lease Extensions (5yr Life)"},null,0,0,0,0,0]
[null,null,null,null,{"$f":"Asset25","v":"Land & Easements - combined"},null,0,0,0,0,0]
[null,null,null,null,{"$f":"Asset26","v":"Communications"},null,0,0,0,0,0]
[null,null,null,null,{"$f":"Asset27","v":"In-house software"},null,0,0,0,0,0]
[null,null,null,null,{"$f":"Asset28","v":"IT Systems"},null,0,0,0,0,0]
[null,null,null,null,{"$f":"Asset29","v":"Legacy ICT Assets"},null,0,0,0,0,0]
[null,null,null,null,{"$f":"Asset30","v":"Buildings - capital works"},null,0,0,0,0,0]
[null,null,null,null,{"$f":"Asset31","v":0},null,0,0,0,0,0]
[null,null,null,null,{"$f":"Asset32","v":0},null,0,0,0,0,0]
[null,null,null,null,{"$f":"Asset33","v":0},null,0,0,0,0,0]
[null,null,null,null,{"$f":"Asset34","v":0},null,0,0,0,0,0]
[null,null,null,null,{"$f":"Asset35","v":0},null,0,0,0,0,0]
[null,null,null,null,{"$f":"Asset36","v":0},null,0,0,0,0,0]
[null,null,null,null,{"$f":"Asset37","v":0},null,0,0,0,0,0]
[null,null,null,null,{"$f":"Asset38","v":0},null,0,0,0,0,0]
[null,null,null,null,{"$f":"Asset39","v":0},null,0,0,0,0,0]
[null,null,null,null,{"$f":"Asset40","v":0},null,0,0,0,0,0]
[null,null,null,null,{"$f":"Asset41","v":0},null,0,0,0,0,0]
[null,null,null,null,{"$f":"Asset42","v":0},null,0,0,0,0,0]
[null,null,null,null,{"$f":"Asset43","v":0},null,0,0,0,0,0]
[null,null,null,null,{"$f":"Asset44","v":0},null,0,0,0,0,0]
[null,null,null,null,{"$f":"Asset45","v":0},null,0,0,0,0,0]
[null,null,null,null,{"$f":"Asset46","v":0},null,0,0,0,0,0]
[null,null,null,null,{"$f":"Asset47","v":0},null,0,0,0,0,0]
[null,null,null,null,{"$f":"Asset48","v":0},null,0,0,0,0,0]
[null,null,null,null,{"$f":"Asset49","v":0},null,0,0,0,0,0]
[null,null,null,null,{"$f":"Asset50","v":"Equity raising costs"},null,0,0,0,0,0]
[null,null,null,null,"Total",null,{"$f":"SUM(G223:G272)","v":23.700240936635165},22.632690469910688,22.476705564081808,22.249823111972852,22.102811908231359,0,0,0,0,0]
[null,null,null,null,null,null,null,null,null,null,null,null,null,null,null,null,{"$f":"SUM(OFFSET(G273,0,0,1,$R$7))","v":113.16227199083187}]
[null,null,null,null,{"$f":"\"Forecast Net Capital Expenditure – As Incurred ($m Real \"&$F$525&\")\"","v":"Forecast Net Capital Expenditure – As Incurred ($m Real 2024-25)"}]
[null,null,null,null,{"$f":"E60","v":"Year"},null,{"$f":"G60","v":"2025-26"},"2026-27","2027-28","2028-29","2029-30","2030-31","2031-32","2032-33","2033-34","2034-35"]
[null,null,null,null,{"$f":"Asset1","v":"Overhead Sub-Transmission Lines"},null,{"$f":"G61-G169-G223","v":78.301390417661509},80.431227885401057,83.212308177859938,85.533547476943895,89.078233931032798,0,0,0,0,0]
[null,null,null,null,{"$f":"Asset2","v":"Underground Sub-Transmission Cables"},null,4.7455518396502603,4.9164440622827295,5.0803977738537585,5.1872988236021325,5.3877906656006642,0,0,0,0,0]
[null,null,null,null,{"$f":"Asset3","v":"Overhead Distribution Lines"},null,455.30044938893661,465.37569604861591,481.80078197597248,497.16378526962399,518.56701651353114,0,0,0,0,0]
[null,null,null,null,{"$f":"Asset4","v":"Underground Distribution Cables"},null,28.042996070263719,28.951697171862236,29.9316745759496,30.645115159173436,31.864575699981447,0,0,0,0,0]
[null,null,null,null,{"$f":"Asset5","v":"Distribution Equipment"},null,3.2912234619554828,3.4116144678992986,3.5251170215616652,3.5977456600936075,3.7361529907739053,0,0,0,0,0]
[null,null,null,null,{"$f":"Asset6","v":"Substation Bays"},null,101.26688194374314,103.98658103596506,107.587168788078,110.61734389564565,115.21361092637929,0,0,0,0,0]
[null,null,null,null,{"$f":"Asset7","v":"Substation Establishment"},null,44.918285005287231,46.477756514817337,48.1170732900068,49.28382485149352,51.315148096780568,0,0,0,0,0]
[null,null,null,null,{"$f":"Asset8","v":"Distribution Substation Switchgear"},null,50.255220851922445,51.861648825393203,53.620266941330833,54.916610437352077,57.109534584390516,0,0,0,0,0]
[null,null,null,null,{"$f":"Asset9","v":"Zone Transformers"},null,15.224462136614228,15.659944685226183,16.198332031959442,16.632394970081588,17.314274713204775,0,0,0,0,0]
[null,null,null,null,{"$f":"Asset10","v":"Distribution Transformers"},null,98.693368833878196,101.29461223633047,104.80912246391949,107.80215441040333,112.29853574894645,0,0,0,0,0]
[null,null,null,null,{"$f":"Asset11","v":"Low Voltage Services"},null,35.966949562569866,36.678157407367003,37.984987161786187,39.267034109425026,40.986850704906146,0,0,0,0,0]
[null,null,null,null,{"$f":"Asset12","v":"Metering"},null,2.2579100923979789,2.3414021917882746,2.4191706005373557,2.4682703289085022,2.562914934035998,0,0,0,0,0]
[null,null,null,null,{"$f":"Asset13","v":"Communications – Pilot Wires"},null,13.229923782255742,13.55327288864518,14.027182925709106,14.448882113238351,15.060318745729155,0,0,0,0,0]
[null,null,null,null,{"$f":"Asset14","v":"Land & Easements (System) - combined"},null,0.46651303727256149,0.48426282501990381,0.50027587790973249,0.51001714198986348,0.52940071516117848,0,0,0,0,0]
[null,null,null,null,{"$f":"Asset15","v":"Land Improvements"},null,0.46651303727256149,0.48426282501990381,0.50027587790973249,0.51001714198986348,0.52940071516117848,0,0,0,0,0]
[null,null,null,null,{"$f":"Asset16","v":"Control Centre - SCADA"},null,4.288971716421571,4.4461166442565894,4.5939997311682284,4.6884385033632112,4.8687165066528237,0,0,0,0,0]
[null,null,null,null,{"$f":"Asset17","v":"Other Equipment"},null,{"$f":"G77-G185-G239","v":0},0,0,0,0,0,0,0,0,0]
[null,null,null,null,{"$f":"Asset18","v":"Generation Assets"},null,0,0,0,0,0,0,0,0,0,0]
[null,null,null,null,{"$f":"Asset19","v":"Motor Vehicles"},null,56.77790559616934,55.691437646724083,43.266232180346755,35.232036531829756,47.977815433710894,0,0,0,0,0]
[null,null,null,null,{"$f":"Asset20","v":"Plant & Equipment"},null,6.7027241606608854,6.3015922235622837,6.4434787097060555,6.1906933145391392,6.0380830391214086,0,0,0,0,0]
[null,null,null,null,{"$f":"Asset21","v":"Buildings"},null,30.038461355199413,24.426712160576898,29.374689094000061,33.168066401497917,31.044147653549953,0,0,0,0,0]
[null,null,null,null,{"$f":"Asset22","v":"Office Equipment & Furniture"},null,1.8495018668806433,1.5039801542605737,1.8086326618386452,2.0421951712174939,1.9114231039340739,0,0,0,0,0]
[null,null,null,null,{"$f":"Asset23","v":"Initial Leases (10 yr life)"},null,0,0,0,0,0,0,0,0,0,0]
[null,null,null,null,{"$f":"Asset24","v":"Lease Extensions (5yr Life)"},null,0,0,0,14.726128208950167,2.5412720053902742,0,0,0,0,0]
[null,null,null,null,{"$f":"Asset25","v":"Land & Easements - combined"},null,0,0,-4.281433585064601,0,-2.3887582896961379,0,0,0,0,0]
[null,null,null,null,{"$f":"Asset26","v":"Communications"},null,0,0,0,0,0,0,0,0,0,0]
[null,null,null,null,{"$f":"Asset27","v":"In-house software"},null,77.371301269882949,63.537722128642869,48.243315048007673,37.658108535687354,47.282318113946616,0,0,0,0,0]
[null,null,null,null,{"$f":"Asset28","v":"IT Systems"},null,3.286948268336519,3.1082514738895042,2.4128399791354527,1.8208975108840137,2.2876883424921051,0,0,0,0,0]
[null,null,null,null,{"$f":"Asset29","v":"Legacy ICT Assets"},null,0,0,0,0,0,0,0,0,0,0]
[null,null,null,null,{"$f":"Asset30","v":"Buildings - capital works"},null,0,0,0,0,0,0,0,0,0,0]
[null,null,null,null,{"$f":"Asset31","v":0},null,0,0,0,0,0,0,0,0,0,0]
[null,null,null,null,{"$f":"Asset32","v":0},null,0,0,0,0,0,0,0,0,0,0]
[null,null,null,null,{"$f":"Asset33","v":0},null,{"$f":"G93-G201-G255","v":0},0,0,0,0,0,0,0,0,0]
[null,null,null,null,{"$f":"Asset34","v":0},null,0,0,0,0,0,0,0,0,0,0]
[null,null,null,null,{"$f":"Asset35","v":0},null,0,0,0,0,0,0,0,0,0,0]
[null,null,null,null,{"$f":"Asset36","v":0},null,0,0,0,0,0,0,0,0,0,0]
[null,null,null,null,{"$f":"Asset37","v":0},null,0,0,0,0,0,0,0,0,0,0]
[null,null,null,null,{"$f":"Asset38","v":0},null,0,0,0,0,0,0,0,0,0,0]
[null,null,null,null,{"$f":"Asset39","v":0},null,0,0,0,0,0,0,0,0,0,0]
[null,null,null,null,{"$f":"Asset40","v":0},null,0,0,0,0,0,0,0,0,0,0]
[null,null,null,null,{"$f":"Asset41","v":0},null,0,0,0,0,0,0,0,0,0,0]
[null,null,null,null,{"$f":"Asset42","v":0},null,0,0,0,0,0,0,0,0,0,0]
[null,null,null,null,{"$f":"Asset43","v":0},null,0,0,0,0,0,0,0,0,0,0]
[null,null,null,null,{"$f":"Asset44","v":0},null,0,0,0,0,0,0,0,0,0,0]
[null,null,null,null,{"$f":"Asset45","v":0},null,0,0,0,0,0,0,0,0,0,0]
[null,null,null,null,{"$f":"Asset46","v":0},null,0,0,0,0,0,0,0,0,0,0]
[null,null,null,null,{"$f":"Asset47","v":0},null,0,0,0,0,0,0,0,0,0,0]
[null,null,null,null,{"$f":"Asset48","v":0},null,0,0,0,0,0,0,0,0,0,0]
[null,null,null,null,{"$f":"Asset49","v":0},null,{"$f":"G109-G217-G271","v":0},0,0,0,0,0,0,0,0,0]
[null,null,null,null,{"$f":"Asset50","v":"Equity raising costs"},null,0,0,0,0,0,0,0,0,0,0]
[null,null,null,null,"Total",null,{"$f":"SUM(G277:G326)","v":1112.7434536952328},1114.9243935035463,{"$f":"SUM(I277:I326)","v":1121.1758893034823},1154.1106059679339,1203.1164655947173,0,0,0,0,0]
[null,null,null,null,null,null,null,null,null,null,null,null,null,null,null,null,{"$f":"SUM(OFFSET(G327,0,0,1,$R$7))","v":5706.0708080649129}]
[null,null,null,null,{"$f":"\"Forecast Operating Expenditure ($m Real \"&$F$525&\")\"","v":"Forecast Operating Expenditure ($m Real 2024-25)"}]
[null,null,null,null,{"$f":"E60","v":"Year"},null,{"$f":"G60","v":"2025-26"},"2026-27","2027-28","2028-29","2029-30","2030-31","2031-32","2032-33","2033-34","2034-35"]
[null,null,null,null,"Controllable opex",null,462.2239621961391,464.69123395771646,467.2504278799413,468.60543946128689,470.82902029777716]
[null,null,null,null,"Corporate"]
[null,null,null,null,"Other"]
[]
[]
[]
[]
[]
[]
[null,null,null,null,"Debt raising costs",null,5.5577382976872949,5.7057727771669375,5.8499759671376905,5.995087141760453,6.1315410582558298,0,0,0,0,0]
[null,null,null,null,"Total",null,482.6064749327756,485.20634079494101,490.66084519814729,494.34803652994896,500.74164847776638,0,0,0,0,0]
[null,null,null,null,null,null,null,null,null,null,null,null,null,null,null,null,{"$f":"SUM(OFFSET(G341,0,0,1,$R$7))","v":2453.5633459335795}]
[null,null,null,null,{"$f":"\"Revenue Adjustments ($m Real \"&$F$525&\")\"","v":"Revenue Adjustments ($m Real 2024-25)"}]
[null,null,null,null,{"$f":"E60","v":"Year"},null,{"$f":"G60","v":"2025-26"},"2026-27","2027-28","2028-29","2029-30","2030-31","2031-32","2032-33","2033-34","2034-35",null,"Tax income?","Tax Expense?"]
[null,null,null,null,"EBSS increments as per NER 6.4.3(a)(5) & 6.5.8",null,-44.029644778249462,-57.617984921399056,-62.216699950806287,-15.205959296761023,0,null,null,null,null,null,null,"Yes","Yes",{"$f":"IF(AND(R345=\"No\",S345=\"Yes\"),\"Caution - there appears to be an error, if an adjustment is not included as tax income, it should not be a tax expense.\",\"\")","v":""}]
[null,null,null,null,"CESS increments as per NER 6.4.3(a)(5) & 6.5.8A",null,-125.15898482210655,-125.15898482210655,-125.15898482210655,-125.15898482210655,-125.15898482210655,null,null,null,null,null,null,"Yes","Yes",{"$f":"IF(AND(R346=\"No\",S346=\"Yes\"),\"Caution - there appears to be an error, if an adjustment is not included as tax income, it should not be a tax expense.\",\"\")","v":""}]
[null,null,null,null,"Control period carryover as per NER 6.4.3(a)(6) & 6.4.3(b)(6)",null,0,0,0,0,0,null,null,null,null,null,null,"No","No",""]
[null,null,null,null,"Shared asset decrements as per NER 6.4.3(a)(6A) & 6.4.4",null,0,0,0,0,0,null,null,null,null,null,null,"Yes","Yes",""]
[null,null,null,null,"Demand management innovation allowance as per NER 6.6.3A",null,1.5018600354790221,1.5358548313327987,1.5752013236134523,1.6197081906782154,1.6552569816884413,null,null,null,null,null,null,"Yes","Yes",""]
[null,null,null,null,"CESS penalty catchup FY20",null,-17.710295106814282,-17.710295106814282,-17.710295106814282,-17.710295106814282,-17.710295106814282,null,null,null,null,null,null,null,null,""]
[null,null,null,null,null,null,null,null,null,null,null,null,null,null,null,null,null,null,null,""]
[null,null,null,null,null,null,null,null,null,null,null,null,null,null,null,null,null,null,null,""]
[null,null,null,null,null,null,null,null,null,null,null,null,null,null,null,null,null,null,null,""]
[null,null,null,null,null,null,null,null,null,null,null,null,null,null,null,null,null,null,null,""]
[null,null,null,null,"Total Adjustments Included as Tax Income",null,{"$f":"SUMIF($R$345:$R$354,\"Yes\",G345:G354)","v":-167.68676956487701},{"$f":"SUMIF($R$345:$R$354,\"Yes\",H345:H354)","v":-181.2411149121728},-185.80048344929941,-138.74523592818937,-123.50372784041811,0,0,0,0,0]
[null,null,null,null,"Total Adjustments Included as Non-tax Income",null,{"$f":"SUMIF($R$345:$R$354,\"No\",G345:G354)","v":0},{"$f":"SUMIF($R$345:$R$354,\"No\",H345:H354)","v":0},0,0,0,0,0,0,0,0]
[null,null,null,null,"Total Adjustments Included as Tax Expense",null,{"$f":"SUMIF($S$345:$S$354,\"Yes\",G345:G354)","v":-167.68676956487701},{"$f":"SUMIF($S$345:$S$354,\"Yes\",H345:H354)","v":-181.2411149121728},-185.80048344929941,-138.74523592818937,-123.50372784041811,0,0,0,0,0]
[null,null,null,null,"Total Adjustments Included as Non-tax Expense",null,{"$f":"SUMIF($S$345:$S$354,\"No\",G345:G354)","v":0},{"$f":"SUMIF($S$345:$S$354,\"No\",H345:H354)","v":0},0,0,0,0,0,0,0,0]
[null,null,null,null,"Total Adjustments",null,{"$f":"SUM(G345:G354)","v":-185.39706467169128},-198.95141001898708,-203.51077855611368,-156.45553103500365,-141.21402294723239,0,0,0,0,0]
[null,null,null,null,null,null,null,null,null,null,null,null,null,null,null,null,{"$f":"SUM(OFFSET(G359,0,0,1,$R$7))","v":-885.52880722902808}]
[null,null,null,null,"Tax"]
[null,null,null,null,{"$f":"E60","v":"Year"},null,{"$f":"G60","v":"2025-26"},"2026-27","2027-28","2028-29","2029-30","2030-31","2031-32","2032-33","2033-34","2034-35"]
[null,null,null,null,"Expected Corporate Tax Rate","T",0.3,0.3,0.3,0.3,0.3]
[]
[null,null,null,null,{"$f":"E60","v":"Year"},{"$f":"F525","v":"2024-25"}]
[null,null,null,null,"Tax Loss Carried Forward From Previous Period ",-22,{"$f":"IF(F366>0,\"Caution - The tax loss carried forward should be a negative number.\",\"\")","v":""}]
[]
[null,null,null,null,{"$f":"E60","v":"Year"},null,{"$f":"G$60","v":"2025-26"},{"$f":"H$60","v":"2026-27"},"2027-28","2028-29","2029-30","2030-31","2031-32","2032-33","2033-34","2034-35"]
[null,null,null,null,"Diminishing Value Multiplier ",null,2,2,2,2,2]
[]
[null,null,null,null,"Expected Inflation"]
[null,null,null,null,{"$f":"E60","v":"Year"},null,{"$f":"G60","v":"2025-26"},{"$f":"H60","v":"2026-27"},"2027-28","2028-29","2029-30","2030-31","2031-32","2032-33","2033-34","2034-35"]
[null,null,null,null,"Expected Inflation",null,3.1E-2,2.9499999999999998E-2,2.7999999999999997E-2,2.6499999999999996E-2,2.5000000000000001E-2,{"$f":"IF(COUNT($G$374:K374)>=Reg_Period_Length,\"n/a\",K373)","v":"n/a"},{"$f":"IF(COUNT($G$374:L374)>=Reg_Period_Length,\"n/a\",L373)","v":"n/a"},{"$f":"IF(COUNT($G$374:M374)>=Reg_Period_Length,\"n/a\",M373)","v":"n/a"},{"$f":"IF(COUNT($G$374:N374)>=Reg_Period_Length,\"n/a\",N373)","v":"n/a"},{"$f":"IF(COUNT($G$374:O374)>=Reg_Period_Length,\"n/a\",O373)","v":"n/a"}]
[null,null,null,null,"Interim Calculation",null,{"$f":"1+G373","v":1.0309999999999999},{"$f":"IF(COUNT($G$374:G374)>=Reg_Period_Length,\"n/a\",1+H373)","v":1.0295000000000001},{"$f":"IF(COUNT($G$374:H374)>=Reg_Period_Length,\"n/a\",1+I373)","v":1.028},{"$f":"IF(COUNT($G$374:I374)>=Reg_Period_Length,\"n/a\",1+J373)","v":1.0265},{"$f":"IF(COUNT($G$374:J374)>=Reg_Period_Length,\"n/a\",1+K373)","v":1.0249999999999999},{"$f":"IF(COUNT($G$374:K374)>=Reg_Period_Length,\"n/a\",1+L373)","v":"n/a"},{"$f":"IF(COUNT($G$374:L374)>=Reg_Period_Length,\"n/a\",1+M373)","v":"n/a"},{"$f":"IF(COUNT($G$374:M374)>=Reg_Period_Length,\"n/a\",1+N373)","v":"n/a"},{"$f":"IF(COUNT($G$374:N374)>=Reg_Period_Length,\"n/a\",1+O373)","v":"n/a"},{"$f":"IF(COUNT($G$374:O374)>=Reg_Period_Length,\"n/a\",1+P373)","v":"n/a"}]
[]
[null,null,null,null,{"$f":"E60","v":"Year"},null,{"$f":"G60","v":"2025-26"}]
[null,null,null,null,"Inflation Rate","f",{"$f":"GEOMEAN(OFFSET($G$374,0,0,1,Reg_Period_Length))-1","v":2.7997811278454687E-2}]
[]
[null,null,null,null,null,null,"Clause 6.4.2(b)(1) of the NER requires the AER to specify in the PTRM a methodology that is likely to result in the best estimate of expected inflation. \nThe AER uses an approach that calculates the geometric average of expected inflation over the regulatory control period. The expected inflation for each regulatory year are determined using: inflation forecasts for the regulatory year from the latest available RBA’s Statement on Monetary Policy, if such a forecast is available; a linear glide-path from the latest RBA forecast to the mid-point of the RBA’s target inflation band in the fifth year from the start of the regulatory period; and the mid-point of the RBA’s target inflation band beyond that, where relevant.\nFurther detail of the method and calculation is set out in the individual input cells and in the PTRM handbook."]
[]
[null,null,null,null,"Cost of Capital"]
[null,null,null,null,{"$f":"E60","v":"Year"},null,{"$f":"CONCATENATE(LEFT(G60,4),\"-\",RIGHT(OFFSET(G60,0,R7-1,1,1),2))","v":"2025-30"}]
[null,null,null,null,"Return on Equity","Re",7.9399999999999998E-2]
[null,null,null,null,"Value of Imputation Credits (gamma)","γ",0.56999999999999995]
[null,null,null,null,"Proportion of Debt Funding","D/V",0.6]
[]
[null,null,null,null,{"$f":"E60","v":"Year"},null,{"$f":"G60","v":"2025-26"},"2026-27","2027-28","2028-29","2029-30","2030-31","2031-32","2032-33","2033-34","2034-35"]
[null,null,null,null,"Trailing Average Portfolio Return on Debt",null,4.7766676463948575E-2,4.8562236762808825E-2,4.9775779349706346E-2,5.1587588323509945E-2,5.3438231745558416E-2]
[null,null,null,null,null,null,"","","","","","","","","",""]
[null,null,null,null,null,null,{"$f":"IF(ISERROR(HLOOKUP(\"Value expected\",G389:P389,1,FALSE)),IF(ISERROR(HLOOKUP(\"Year of update\",G389:P389,1,FALSE)),\"\",\"On the X factors tab (cell F21) you have indicated that you are updating debt costs within the regulatory control period\"),\"CAUTION - return on debt inputs are expected above because the X factors tab (cell F21) indicates that you are updating debt costs within the regulatory control period.\")","v":""}]
[null,null,null,null,null,null,"The trailing average portfolio return on debt must be entered up to the year of update (i.e. year 1 at the final decision, year 2 in the first annual update etc.). Future years can be left blank."]
[]
[null,null,null,null,"Debt and Equity Raising Costs – Transaction Costs (per cent)"]
[null,null,null,null,null,null,"Value"]
[null,null,null,null,"Imputation Credit Payout Ratio","ICPR",0.87870000000000004]
[null,null,null,null,"Subsequent Equity Raising Costs","SEO",0.03]
[null,null,null,null,"Dividend Reinvestment Plan Costs","DRPC",0.01]
[null,null,null,null,"Dividend Reinvestment Plan Take Up","DRPT",0.3]
[null,null,null,null,"Debt Raising Costs","DRC",8.3502097604817751E-4]
[]
[null,null,null,null,{"$f":"\"Price/Revenue Constraint for \"&$F$525& \" ($ Nominal)\"","v":"Price/Revenue Constraint for 2024-25 ($ Nominal)"}]
[null,null,null,null,null,null,"Value"]
[null,null,null,null,"Maximum Allowed Revenue","$m Nominal",1359.2904410000001]
[null,null,null,null,"Revenue Yield","$/MWh"]
[]
[null,null,null,null,"Straight-line Depreciation Option for Opening RAB"]
[null,null,null,null,null,null,"Weighted Average Remaining Life Depreciation"]
[null,null,null,null,"Year-by-Year Tracking Depreciation",null,"Year-by-Year Tracking Depreciation"]
[null,null,null,null,null,null,{"$f":"IF(E408=G407,\"WARL\",\"YBY Tracking\")","v":"YBY Tracking"}]
[]
[null,null,null,null,{"$f":"\"Year-by-Year Tracking Depreciation on Opening RAB ($m Real \"&$F$525&\")\"","v":"Year-by-Year Tracking Depreciation on Opening RAB ($m Real 2024-25)"}]
[null,null,null,null,{"$f":"E$60","v":"Year"},null,{"$f":"G$60","v":"2025-26"},{"$f":"H$60","v":"2026-27"},"2027-28","2028-29","2029-30","2030-31","2031-32","2032-33","2033-34","2034-35",{"$f":"(LEFT(P412,4)+1&IF(MID(P412,5,1)=\"\",\"\",\"-\"&TEXT(MID(P412,6,2)+1,\"00\")))","v":"2035-36"},{"$f":"(LEFT(Q412,4)+1&IF(MID(Q412,5,1)=\"\",\"\",\"-\"&TEXT(MID(Q412,6,2)+1,\"00\")))","v":"2036-37"},"2037-38","2038-39","2039-40","2040-41","2041-42","2042-43","2043-44","2044-45","2045-46","2046-47","2047-48","2048-49","2049-50","2050-51","2051-52","2052-53","2053-54","2054-55","2055-56","2056-57","2057-58","2058-59","2059-60","2060-61","2061-62","2062-63","2063-64","2064-65","2065-66","2066-67","2067-68","2068-69","2069-70","2070-71","2071-72","2072-73","2073-74","2074-75","2075-76","2076-77","2077-78","2078-79","2079-80"]
[null,null,null,null,{"$f":"Asset1","v":"Overhead Sub-Transmission Lines"},null,55.506655259435689,55.506655259435689,55.506655259435689,55.506655259435689,55.506655259435689,55.506655259435689,55.506655259435689,55.506655259435689,55.506655259435689,55.506655259435689,55.506655259435689,55.506655259435689,55.506655259435689,55.506655259435689,55.506655259435689,55.506655259435689]
[null,null,null,null,{"$f":"Asset2","v":"Underground Sub-Transmission Cables"},null,2.6920337654670918,2.6920337654670918,2.6920337654670918,2.6920337654670918,2.6920337654670918,2.6920337654670918,2.6920337654670918,2.6920337654670918,2.6920337654670918,2.6920337654670918,2.6920337654670918,2.6920337654670918,2.6920337654670918,2.6920337654670918,2.6920337654670918,2.6920337654670918]
[null,null,null,null,{"$f":"Asset3","v":"Overhead Distribution Lines"},null,187.37607635867266,187.37607635867266,187.37607635867266,187.37607635867266,187.37607635867266,187.37607635867266,187.37607635867266,187.37607635867266,187.37607635867266,187.37607635867266,187.37607635867266,187.37607635867266,187.37607635867266,187.37607635867266,187.37607635867266,187.37607635867266]
[null,null,null,null,{"$f":"Asset4","v":"Underground Distribution Cables"},null,28.257754652362006,28.257754652362006,28.257754652362006,28.257754652362006,28.257754652362006,28.257754652362006,28.257754652362006,28.257754652362006,28.257754652362006,28.257754652362006,28.257754652362006,28.257754652362006,28.257754652362006,28.257754652362006,28.257754652362006,28.257754652362006]
[null,null,null,null,{"$f":"Asset5","v":"Distribution Equipment"},null,2.0589848171820435,2.0589848171820435,2.0589848171820435,2.0589848171820435,2.0589848171820435,2.0589848171820435,2.0589848171820435,2.0589848171820435,2.0589848171820435,2.0589848171820435,2.0589848171820435,2.0589848171820435,2.0589848171820435,2.0589848171820435,2.0589848171820435,2.0589848171820435]
[null,null,null,null,{"$f":"Asset6","v":"Substation Bays"},null,63.77934784098175,63.77934784098175,63.77934784098175,63.77934784098175,63.77934784098175,63.77934784098175,63.77934784098175,63.77934784098175,63.77934784098175,63.77934784098175,63.77934784098175,63.77934784098175,63.77934784098175,63.77934784098175,63.77934784098175,63.77934784098175]
[null,null,null,null,{"$f":"Asset7","v":"Substation Establishment"},null,15.389492111995169,15.389492111995169,15.389492111995169,15.389492111995169,15.389492111995169,15.389492111995169,15.389492111995169,15.389492111995169,15.389492111995169,15.389492111995169,15.389492111995169,15.389492111995169,15.389492111995169,15.389492111995169,15.389492111995169,15.389492111995169]
[null,null,null,null,{"$f":"Asset8","v":"Distribution Substation Switchgear"},null,19.808673950868226,19.808673950868226,19.808673950868226,19.808673950868226,19.808673950868226,19.808673950868226,19.808673950868226,19.808673950868226,19.808673950868226,19.808673950868226,19.808673950868226,19.808673950868226,19.808673950868226,19.808673950868226,19.808673950868226,19.808673950868226]
[null,null,null,null,{"$f":"Asset9","v":"Zone Transformers"},null,15.615911072738239,15.615911072738239,15.615911072738239,15.615911072738239,15.615911072738239,15.615911072738239,15.615911072738239,15.615911072738239,15.615911072738239,15.615911072738239,15.615911072738239,15.615911072738239,15.615911072738239,15.615911072738239,15.615911072738239,15.615911072738239]
[null,null,null,null,{"$f":"Asset10","v":"Distribution Transformers"},null,70.927954394958959,70.927954394958959,70.927954394958959,70.927954394958959,70.927954394958959,70.927954394958959,70.927954394958959,70.927954394958959,70.927954394958959,70.927954394958959,70.927954394958959,70.927954394958959,70.927954394958959,70.927954394958959,70.927954394958959,70.927954394958959]
[null,null,null,null,{"$f":"Asset11","v":"Low Voltage Services"},null,13.645155561247948,13.645155561247948,13.645155561247948,13.645155561247948,13.645155561247948,13.645155561247948,13.645155561247948,13.645155561247948,13.645155561247948,13.645155561247948,13.645155561247948,13.645155561247948,13.645155561247948,13.645155561247948,13.645155561247948,13.645155561247948]
[null,null,null,null,{"$f":"Asset12","v":"Metering"},null,4.8091661490940689,4.8091661490940689,4.8091661490940689,4.8091661490940689,4.8091661490940689,4.8091661490940689,4.8091661490940689,4.8091661490940689,4.8091661490940689,4.8091661490940689,4.8091661490940689,4.8091661490940689,3.0180260817896807,2.2148531178572748,2.2148531178572619,0.92784921358283978]
[null,null,null,null,{"$f":"Asset13","v":"Communications – Pilot Wires"},null,9.2315587677447208,9.2315587677447208,9.2315587677447208,9.2315587677447208,9.2315587677447208,9.2315587677447208,9.2315587677447208,9.2315587677447208,9.2315587677447208,9.2315587677447208,9.2315587677447208,9.2315587677447208,9.2315587677447208,9.2315587677447208,9.2315587677447208,9.2315587677447208]
[null,null,null,null,{"$f":"Asset14","v":"Land & Easements (System) - combined"},null,0,0,0,0,0,0,0,0,0,0,0,0,0,0,0,0]
[null,null,null,null,{"$f":"Asset15","v":"Land Improvements"},null,4.9034374995175547,4.9034374995175547,4.9034374995175547,4.9034374995175547,4.9034374995175547,4.9034374995175547,4.9034374995175547,4.9034374995175547,4.9034374995175547,4.9034374995175547,4.9034374995175547,4.9034374995175547,4.9034374995175547,4.9034374995175547,4.9034374995175547,4.9034374995175547]
[null,null,null,null,{"$f":"Asset16","v":"Control Centre - SCADA"},null,7.3661033075177462,7.1745537036847855,4.1246583543166233,3.5204245225743782,2.7067034161646508,1.3820662402312347,0.71098907141679124,0,0,0,0,0,0,0,0,0]
[null,null,null,null,{"$f":"Asset17","v":"Other Equipment"},null,3.7315021508326454E-2,3.7315021508326454E-2,3.7315021508326454E-2,3.7315021508326454E-2,3.7315021508326454E-2,3.7315021508326454E-2,3.7315021508326454E-2,3.7315021508326454E-2,3.7315021508326454E-2,3.7315021508326454E-2,3.7315021508326454E-2,3.7315021508326454E-2,3.7315021508326454E-2,3.7315021508326454E-2,3.7315021508326454E-2,3.7315021508326454E-2]
[null,null,null,null,{"$f":"Asset18","v":"Generation Assets"},null,0.69805123786391676,0.69805123786391676,0.69805123786391676,0.69805123786391676,0.69805123786391676,0.69805123786391676,0.69805123786391676,0.69805123786391676,0.69805123786391676,0.69805123786391676,0.69805123786391676,0.69805123786391676,0.69805123786391676,0.69805123786391676,0.69805123786391676,0.69805123786391676]
[null,null,null,null,{"$f":"Asset19","v":"Motor Vehicles"},null,27.34774224397831,24.570474570032552,22.667581823226055,21.378930906647966,18.87628370855829,15.244808843759149,13.943417223145941,12.340735488800117,9.8318687328330512,6.1436482140916508,0,0,0,0,0,0]
[null,null,null,null,{"$f":"Asset20","v":"Plant & Equipment"},null,9.2947054392793262,7.438100680766536,5.8340721259670403,5.1880105467441551,4.3902007709208011,2.8977788891406884,2.4174549302569113,1.9210613357159514,1.2915768714593081,0.71194056085047053,0,0,0,0,0,0]
[null,null,null,null,{"$f":"Asset21","v":"Buildings"},null,13.036965272421174,13.036965272421174,13.036965272421174,13.036965272421174,13.036965272421174,13.036965272421174,13.036965272421174,13.036965272421174,13.036965272421174,13.036965272421174,13.036965272421174,13.036965272421174,13.036965272421174,13.036965272421174,13.036965272421174,13.036965272421174]
[null,null,null,null,{"$f":"Asset22","v":"Office Equipment & Furniture"},null,-2.4041090306070969,-1.6476900203645062,-1.2676531275454961,-1.2676531275454961,-1.2676531275454961,-1.2676531275454963,-0.65952356618326069,0,0,0,0,0,0,0,0,0]
[null,null,null,null,{"$f":"Asset23","v":"Initial Leases (10 yr life)"},null,12.371019656988214,12.371019656988214,12.371019656988214,12.371019656988214,4.1178474268094547,0,0,0,0,0,0,0,0,0,0,0]
[null,null,null,null,{"$f":"Asset24","v":"Lease Extensions (5yr Life)"},null,0,0,0,0,0,0,0,0,0,0,0,0,0,0,0,0]
[null,null,null,null,{"$f":"Asset25","v":"Land & Easements - combined"},null,0,0,0,0,0,0,0,0,0,0,0,0,0,0,0,0]
[null,null,null,null,{"$f":"Asset26","v":"Communications"},null,8.0322751714063898,8.0322751714063898,8.0322751714063898,8.0322751714063898,8.0322751714063898,8.0322751714063898,8.0322751714063898,8.0322751714063898,8.0322751714063898,8.0322751714063898,8.0322751714063898,8.0322751714063898,8.0322751714063898,8.0322751714063898,8.0322751714063898,8.0322751714063898]
[null,null,null,null,{"$f":"Asset27","v":"In-house software"},null,65.794801238548615,48.782980657999722,33.948398803550461,27.642095110028123,12.711124630882392,0,0,0,0,0,0,0,0,0,0,0]
[null,null,null,null,{"$f":"Asset28","v":"IT Systems"},null,2.0913321305095214,2.2813839359905543,2.2813839359905539,0.62861959143776636,0.11802172545020471,0,0,0,0,0,0,0,0,0,0,0]
[null,null,null,null,{"$f":"Asset29","v":"Legacy ICT Assets"},null,16.06340341487676,16.06340341487676,16.06340341487676,16.06340341487676,16.06340341487676,0,0,0,0,0,0,0,0,0,0,0]
[null,null,null,null,{"$f":"Asset30","v":"Buildings - capital works"},null,2.319536436824464,2.319536436824464,2.319536436824464,2.319536436824464,2.319536436824464,2.319536436824464,2.319536436824464,2.319536436824464,2.319536436824464,2.319536436824464,2.319536436824464,2.319536436824464,2.319536436824464,2.319536436824464,2.319536436824464,2.319536436824464]
[null,null,null,null,{"$f":"Asset31","v":0},null,0,0,0,0,0,0,0,0,0,0,0,0,0,0,0,0]
[null,null,null,null,{"$f":"Asset32","v":0},null,0,0,0,0,0,0,0,0,0,0,0,0,0,0,0,0]
[null,null,null,null,{"$f":"Asset33","v":0},null,0,0,0,0,0,0,0,0,0,0,0,0,0,0,0,0]
[null,null,null,null,{"$f":"Asset34","v":0},null,0,0,0,0,0,0,0,0,0,0,0,0,0,0,0,0]
[null,null,null,null,{"$f":"Asset35","v":0},null,0,0,0,0,0,0,0,0,0,0,0,0,0,0,0,0]
[null,null,null,null,{"$f":"Asset36","v":0},null,0,0,0,0,0,0,0,0,0,0,0,0,0,0,0,0]
[null,null,null,null,{"$f":"Asset37","v":0},null,0,0,0,0,0,0,0,0,0,0,0,0,0,0,0,0]
[null,null,null,null,{"$f":"Asset38","v":0},null,0,0,0,0,0,0,0,0,0,0,0,0,0,0,0,0]
[null,null,null,null,{"$f":"Asset39","v":0},null,0,0,0,0,0,0,0,0,0,0,0,0,0,0,0,0]
[null,null,null,null,{"$f":"Asset40","v":0},null,0,0,0,0,0,0,0,0,0,0,0,0,0,0,0,0]
[null,null,null,null,{"$f":"Asset41","v":0},null,0,0,0,0,0,0,0,0,0,0,0,0,0,0,0,0]
[null,null,null,null,{"$f":"Asset42","v":0},null,0,0,0,0,0,0,0,0,0,0,0,0,0,0,0,0]
[null,null,null,null,{"$f":"Asset43","v":0},null,0,0,0,0,0,0,0,0,0,0,0,0,0,0,0,0]
[null,null,null,null,{"$f":"Asset44","v":0},null,0,0,0,0,0,0,0,0,0,0,0,0,0,0,0,0]
[null,null,null,null,{"$f":"Asset45","v":0},null,0,0,0,0,0,0,0,0,0,0,0,0,0,0,0,0]
[null,null,null,null,{"$f":"Asset46","v":0},null,0,0,0,0,0,0,0,0,0,0,0,0,0,0,0,0]
[null,null,null,null,{"$f":"Asset47","v":0},null,0,0,0,0,0,0,0,0,0,0,0,0,0,0,0,0]
[null,null,null,null,{"$f":"Asset48","v":0},null,0,0,0,0,0,0,0,0,0,0,0,0,0,0,0,0]
[null,null,null,null,{"$f":"Asset49","v":0},null,0,0,0,0,0,0,0,0,0,0,0,0,0,0,0,0]
[null,null,null,null,{"$f":"Asset50","v":"Equity raising costs"},null,0.24341105430140475,0.24341105430140475,0.24341105430140475,0.24341105430140475,0.24341105430140475,0.24341105430140475,0.24341105430140475,0.24341105430140475,0.24341105430140475,0.24341105430140475,0.24341105430140475,0.24341105430140475,0.24341105430140475,0.24341105430140475,0.24341105430140475,0.24341105430140475]
[null,null,null,null,"Total",null,{"$f":"SUM(G413:G462)","v":656.29475479768348},635.40398299656658,614.39262138396225,{"$f":"SUM(J413:J462)","v":603.89460701834389},{"$f":"SUM(K413:K462)","v":576.08568836270911},536.62675724217752,534.7820940552283,532.63155322110799,529.49320200088425,525.22534517153395,518.36975639659192,518.36975639659192,516.57861632928757,515.77544336535516,515.77544336535516,514.4884394610807,0,0,0,0,0,0,0,0,0,0,0,0,0,0,0,0,0,0,0,0,0,0,0,0,0,0,0,0,0,0,0,0,0,0,0,0,0,0,0]
[]
[null,null,null,null,"Straight-line Depreciation Option for Opening TAB"]
[null,null,null,null,null,null,"Weighted Average Remaining Life Depreciation"]
[null,null,null,null,"Year-by-Year Tracking Depreciation",null,"Year-by-Year Tracking Depreciation"]
[null,null,null,null,null,null,{"$f":"IF(E467=G466,\"WARL\",\"YBY Tracking\")","v":"YBY Tracking"}]
[]
[null,null,null,null,{"$f":"\"Year-by-Year Tracking Depreciation on Opening TAB ($m Nominal)\"","v":"Year-by-Year Tracking Depreciation on Opening TAB ($m Nominal)"}]
[null,null,null,null,{"$f":"E$60","v":"Year"},null,{"$f":"G$60","v":"2025-26"},{"$f":"H$60","v":"2026-27"},"2027-28","2028-29","2029-30","2030-31","2031-32","2032-33","2033-34","2034-35",{"$f":"(LEFT(P471,4)+1&IF(MID(P471,5,1)=\"\",\"\",\"-\"&TEXT(MID(P471,6,2)+1,\"00\")))","v":"2035-36"},{"$f":"(LEFT(Q471,4)+1&IF(MID(Q471,5,1)=\"\",\"\",\"-\"&TEXT(MID(Q471,6,2)+1,\"00\")))","v":"2036-37"},"2037-38","2038-39","2039-40","2040-41","2041-42","2042-43","2043-44","2044-45","2045-46","2046-47","2047-48","2048-49","2049-50","2050-51","2051-52","2052-53","2053-54","2054-55","2055-56","2056-57","2057-58","2058-59","2059-60","2060-61","2061-62","2062-63","2063-64","2064-65","2065-66","2066-67","2067-68","2068-69","2069-70","2070-71","2071-72","2072-73","2073-74","2074-75","2075-76","2076-77","2077-78","2078-79","2079-80"]
[null,null,null,null,{"$f":"Asset1","v":"Overhead Sub-Transmission Lines"},null,24.862218987011271,24.614065388548678,24.376940838906641,24.150355158137579,23.933839952069366,23.726947644048629,23.529250549717705,23.340339992912597,23.159825460854385,22.987333796887651,22.822508429097212,22.665008633208572,22.514508828248314,22.370697903508514,22.233278575423821,22.101966773031773,16.265966098530523,2.577829005625754,2.4632588275979428,2.3537806574824787,2.2491681838165909,2.1492051534247425,2.053684924383643,1.9624100388554806,1.8751918149063482,1.7918499564660662,1.7122121806231299,1.636113861484324,1.5633976898627986,1.4939133480911184,1.4275171992870688,1.3640719904298659,1.3034465686329828,1.2455156100270721,1.1901593606925358,1.1372633891062007,1.0867183495903694,1.0384197562752417,0.99226776710745335,0.94816697745823308,0.90602622290453405,0.86575839077544348,0.82728024007431267,0.79051222940434351,0.75537835254192831,0.72180598131784224,0.68972571548149375,0.65907123923787159,0.62977918416063305,0.60178899819793807,2.9506977990042929,3.8353778560068026,5.7297536814033645,0.20804184346427745,0.21459228137692898]
[null,null,null,null,{"$f":"Asset2","v":"Underground Sub-Transmission Cables"},null,1.7521655444981767,1.7490779919136006,1.7461139414324078,1.7432684529704627,1.7405367840469952,1.7379143818804665,1.7353968758005991,1.732980069963926,1.7306599363607205,1.7284326081016426,1.7262943729729279,1.7242416672493617,1.7222710697547383,1.7203792961599003,1.7185631935088552,1.7168197349638519,1.715146014760649,1.7135392433655743,1.7119967428263023,1.7105159423086012,1.7090943738116084,1.7077296680544951,1.7064195505276663,1.7051618377019107,1.7039544333891852,1.7027953252489691,1.7016825814343615,0.93428267853466918,2.4612112789018269E-2,2.3627628277457544E-2,2.268252314635924E-2,2.1775222220504868E-2,2.0904213331684678E-2,2.0068044798417287E-2,1.9265323006480595E-2,1.8494710086221368E-2,1.7754921682772519E-2,1.7044724815461616E-2,1.636293582284315E-2,1.5708418389929424E-2,6.1854602065888872E-2,0.12423121145050929,8.541948883085819E-2,5.1798720013772684E-2,5.3698018997277275E-2,0,0,0,0,0,0,0,0,0,0]
[null,null,null,null,{"$f":"Asset3","v":"Overhead Distribution Lines"},null,112.07746887800464,110.74976143674161,109.48106321509029,108.2687515810679,107.11032046411317,106.00337517457866,104.94562745346789,103.93489074218429,102.96907566251326,102.04618569749431,101.16431306425397,100.32163477026873,99.516408844905087,98.746970738446493,98.011729881163831,97.309166395315955,96.637827953283534,95.99632677534143,95.383336760863443,94.797590747028934,94.23787788936481,93.703041158708004,93.191974949413733,92.703622793865847,92.236975178564563,91.791067457276625,91.364977856934871,90.957825572163827,20.603513924608016,7.9929522729112774,7.6377099496707759,7.2982561741298531,6.9738892330574132,6.6639386004770849,6.3677635515669939,6.0847518381640153,5.8143184231345035,5.5559042709951925,5.3089751922842945,5.0730207392938818,4.8475531508808203,4.632106344175007,4.4262349511005636,4.2295133977183186,4.0415350244863939,27.148110167948968,27.670968051618054,30.989819924629035,0.5336511298017782,0.55045375245967509,0,0,0,0,0]
[null,null,null,null,{"$f":"Asset4","v":"Underground Distribution Cables"},null,18.779969849788031,18.721244327125213,18.664867825368905,18.610746383682848,18.558789799664233,18.508911479006365,18.461028291174813,18.415060430856521,18.370931284950963,18.32856730488162,18.287897884015059,18.248855239983158,18.211374301712532,18.175392600972735,18.140850168262524,18.107689432860727,18.075855126874991,18.045294193128694,18.015955696732252,17.987790740191659,17.960752381912695,17.934795557964883,17.909877006974995,17.885955198024693,17.862990261432412,17.840943922303811,17.819779436740362,17.799461530599448,17.779956340704167,13.757690878864562,0.43142359217969528,0.41416664849250751,0.39759998255280715,0.38169598325069481,0.36642814392066708,0.35177101816384032,0.33770017743728675,0.32419217033979519,0.31122448352620352,0.29877550418515536,0.28682448401774913,0.27535150465703923,0.26433744447075769,0.25376394669192742,0.2436133888242504,0.23386885327128035,0.22451409914042911,0.215533535174812,0.20691219376781952,0.1986357060171067,0.19069027777642242,0.18306266666536555,0.17574015999875084,0.16871055359880088,0.16196213145484881]
[null,null,null,null,{"$f":"Asset5","v":"Distribution Equipment"},null,0.92337723391103499,0.92211222631998835,0.92090344128854362,0.91974838003627457,0.91864465483966173,0.91758998409623171,0.9165821876080652,0.91561918207492843,0.91469897678770873,0.91381966951325444,0.91297944256210928,0.9121765590310148,0.91140935921241373,0.91067625716352807,0.90997573742792615,0.90930635190279563,0.90866671684544842,0.90805551001287244,0.90747146792841082,0.90691338326992521,0.9063801023740391,0.90587052285130343,0.90538359130735602,0.90491830116536187,0.90447369058523408,0.90404884047533418,0.90364287259254095,0.90325494772676074,0.90288426396612631,0.90253005503929806,0.92428814237014456,0.92765420356070305,0.89954451320557594,0.42896200197640993,4.9246580222423342E-2,0,0,0,0,0,0,0,0,0,0,0,0,0,0,0,0,0,0,0,0]
[null,null,null,null,{"$f":"Asset6","v":"Substation Bays"},null,33.15701203096021,32.829665879298972,32.518687035220808,32.223257133346543,31.94259872656599,31.67597324012447,31.422679028005021,31.18204952649155,30.953451500053745,30.736283374937834,30.529973656077718,30.333979423160617,30.147784901889359,29.970900106681668,29.802859551234363,29.64322102355942,29.491564422268226,29.347490651041596,29.210620568376289,29.08059398984425,28.957068740238817,28.839719753113648,28.728238215344746,28.622330754464283,28.521718666627848,28.426137183183233,18.423424215318899,1.6389834873665465,1.5570343129982191,1.4791825973483079,1.4052234674808926,1.334962294106848,1.2682141794015056,1.2048034704314301,1.1445632969098589,1.0873351320643658,1.0329683754611476,0.98131995668809047,0.932253958853686,0.88564126091100182,4.56004381378209,5.4744274892065627,6.1574226209732981,0.31372105698111852,0.32156897636596504,0,0,0,0,0,0,0,0,0,0]
[null,null,null,null,{"$f":"Asset7","v":"Substation Establishment"},null,6.9905665558003101,6.9485375333853474,6.9086099620911323,6.8706787693616294,6.8346441362685999,6.8004112348302233,6.7678899784637645,6.7369947849156295,6.7076443510449009,6.6797614388677076,6.6532726722993756,6.6281083440594593,6.6042022322315397,6.581491425995015,6.5599161600703173,6.5394196574418526,6.5199479799448143,6.501449886322626,6.4838766973815476,6.4671821678875228,6.4513223648681999,6.4362555519998415,6.4219420797749027,6.4083442811612095,1.6990718633816897,0.23316825172829056,0.221509839141876,0.21043434718478221,0.19991262982554309,0.1899169983342659,0.18042114841755261,0.171400090996675,0.16283008644684124,0.15468858212449918,0.14695415301827425,0.13960644536736047,0.13262612309899249,0.12599481694404285,0.11969507609684071,0.11371032229199868,0.10802480617739874,0.10262356586852878,9.7492387575102313E-2,9.2617768196347233E-2,8.7986879786529901E-2,8.3587535797203405E-2,7.9408159007343229E-2,7.5437751056976032E-2,7.1665863504127236E-2,6.8082570328920899E-2,6.4678441812474854E-2,6.144451972185111E-2,5.837229373575855E-2,5.5453679048970611E-2,5.2680995096522083E-2]
[null,null,null,null,{"$f":"Asset8","v":"Distribution Substation Switchgear"},null,13.649225904484753,13.537233987051073,13.430841665489075,13.329768960005181,13.233749889795476,13.142531773096259,13.055874562232004,12.973550211910961,12.895342079105967,12.821044352941223,12.750461513084719,12.68340781522104,12.619706802250546,12.559190839928576,12.501700675722702,12.447085019727124,12.395200146531325,12.345909516995315,12.299083418936105,12.254598625779856,12.212338072281419,12.172190546457905,12.134050396925566,12.097817254869843,12.063395769916907,12.030695359211618,9.1970302707724993,0.56073029256894313,0.53269377794049588,0.50605908904347108,0.48075613459129746,0.4567183278617325,0.43388241146864587,0.41218829089521353,0.3915788763504528,0.37199993253293012,0.3533999359062836,0.33572993911096949,0.31894344215542098,0.30299627004765001,1.4449249686695773,1.9088769786368616,1.8724247977259334,0.26207323379731029,0.26862915207566562,0,0,0,0,0,0,0,0,0,0]
[null,null,null,null,{"$f":"Asset9","v":"Zone Transformers"},null,10.177287986051931,10.15989364462291,10.143369020265343,10.127670627125651,10.112757153642946,10.098589353834377,10.085129944016234,10.072343504688998,10.060196387328128,10.048656625835296,10.03769385241711,10.027279217669831,10.017385314659915,10.007986106800498,9.9990568593340505,9.9905740742409233,7.6116596199427597,0.14545855738437091,0.13818562951515237,0.13127634803939475,0.12471253063742499,0.11847690410555378,0.11255305890027609,0.10692540595526227,0.10157913565749917,9.6500178874624198E-2,9.1675169930892975E-2,8.7091411434348329E-2,8.2736840862630931E-2,7.8599998819499403E-2,7.4669998878524421E-2,7.0936498934598191E-2,6.738967398786827E-2,6.4020190288474846E-2,6.0819180774051136E-2,5.7778221735348592E-2,5.4889310648581158E-2,5.2144845116152097E-2,4.9537602860344504E-2,4.7060722717327266E-2,4.4707686581460883E-2,4.2472302252387822E-2,4.0348687139768427E-2,3.8331252782779997E-2,3.6414690143640981E-2,5.4328148863140503E-2,0.41031617398671111,0.1360583470772925,4.5025057070280282E-2,4.6151385731754146E-2,0,0,0,0,0]
[null,null,null,null,{"$f":"Asset10","v":"Distribution Transformers"},null,49.8622011467261,49.312579972647811,48.790439857273427,48.294406747667765,47.823175293542391,47.375505412123289,46.950219024775137,46.546196956794397,46.162375992212695,45.797746075860069,45.451347655325073,45.122269155816831,44.809644581284012,44.512651235477819,44.230507556961946,43.962471062371854,43.707836392511282,43.465933456143723,43.236125666594553,43.017808266522835,27.796614415889859,3.7435976177297285,3.556417736843243,3.378596850001081,3.2096670075010265,3.0491836571259761,2.8967244742696767,2.7518882505561932,2.6142938380283836,2.4835791461269636,2.3594001888206164,2.2414301793795848,2.129358670410606,2.0228907368900755,1.9217462000455716,1.8256588900432933,1.7343759455411278,1.6476571482640718,1.5652742908508681,1.4870105763083246,8.8771514900911086,9.6793344957707905,9.1189709724908408,0.2853034774127346,0.29244051409269955,0,0,0,0,0,0,0,0,0,0]
[null,null,null,null,{"$f":"Asset11","v":"Low Voltage Services"},null,13.171199881728668,12.967339451447254,12.773672042679907,12.589688004350933,12.414903167938405,12.248857573346505,12.091114258484199,11.941258109365009,11.79889476770178,11.663649593121709,11.53516667727064,11.413107907212128,11.297152075656541,11.186994035678733,11.082343897699817,10.982926266619844,10.88847951709387,10.798755105044195,10.713516913597006,10.632540631722176,10.324819883864375,1.3885407934486671,1.3191137537762336,1.2531580660874222,1.1905001627830507,1.1309751546438984,1.0744263969117036,1.0207050770661181,0.96966982321281225,0.9211863320521716,5.8573263297522891,4.4563210495233436,7.1690602130676995,9.7938587149150533E-3,1.0038857933012971E-2,0,0,0,0,0,0,0,0,0,0,0,0,0,0,0,0,0,0,0,0]
[null,null,null,null,{"$f":"Asset12","v":"Metering"},null,3.4703980713794116,3.4540660277752027,3.4390405476593298,3.4252171059527274,3.4124995395826527,3.4007993785221839,3.3900352303465531,3.3801322140249721,3.3710214390091187,3.362639525994533,3.3549281660211134,3.3478337148455681,0.23115163571872477,6.9054549962289116E-2,6.3530185965305991E-2,5.8447771088081517E-2,5.3771949401035017E-2,4.9470193448952225E-2,4.5512577973036025E-2,4.1871571735193167E-2,0.45200833619722058,3.4666582205571256E-3,-1.6373032488515741E-2,2.1315240102879645E-2,2.1105872922579677E-2,0,0,0,0,0,0,0,0,0,0,0,0,0,0,0,0,0,0,0,0,0,0,0,0,0,0,0,0,0,0]
[null,null,null,null,{"$f":"Asset13","v":"Communications – Pilot Wires"},null,2.5917937563652491,2.073435005092199,1.6587480040737594,1.3269984032590074,1.0615987226072059,0.84927897808576447,0.67942318246861166,0.54353854597488938,0.43483083677991147,0.34786466942392902,0.27829173553914338,0.22263338843131472,0.17810671074505183,0.14248536859604161,0.11398829487683321,9.119063590146656E-2,7.2952508721172996E-2,5.8362006976938323E-2,4.6689605581550761E-2,3.7351684465240571E-2,2.9881347572192598E-2,2.3905078057754218E-2,1.9124062446203259E-2,1.5299249956962857E-2,1.2239399965570365E-2,9.7915199724560743E-3,7.8332159779646807E-3,6.2665727823715388E-3,5.013258225897022E-3,4.0106065807176908E-3,7.4126909515955354E-3,6.2241120517744775E-3,2.1535703436775799E-3,1.3605793252526865E-4,1.1599504329773414E-4,0,0,0,0,0,0,0,0,0,0,0,0,0,0,0,0,0,0,0,0]
[null,null,null,null,{"$f":"Asset14","v":"Land & Easements (System) - combined"},null,0,0,0,0,0,0,0,0,0,0,0,0,0,0,0,0,0,0,0,0,0,0,0,0,0,0,0,0,0,0,0,0,0,0,0,0,0,0,0,0,0,0,0,0,0,0,0,0,0,0,0,0,0,0,0]
[null,null,null,null,{"$f":"Asset15","v":"Land Improvements"},null,3.0692969022160126,3.0699042374475787,3.0704812059175666,3.0710293259640546,3.0715500400082183,3.0720447183501745,3.0725146627750326,3.0729611099786474,3.0733852348220818,3.0737881534233442,3.0741709260945433,3.0745345601321832,3.0748800124679407,3.0752081921869099,3.0755199629199308,3.0758161451163017,3.0760975182028529,3.0763648226350768,3.0766187618456895,3.0768600040957721,3.0770891842333499,3.0773069053640492,3.0775137404382136,3.0777102337586695,3.0778969024131029,3.078074237634814,3.0782427060954403,0.62019632266048108,-2.8888129285834178E-3,-2.7443722821542471E-3,-2.6071536680465353E-3,-2.4767959846442086E-3,-2.3529561854119989E-3,-2.2353083761413981E-3,-2.1235429573343281E-3,-4.4342574698655546E-2,-5.9455855917528288E-3,4.9704220505280704E-4,4.6635699557965437E-3,4.7802319402067972E-3,0,0,0,0,0,0,0,0,0,0,0,0,0,0,0]
[null,null,null,null,{"$f":"Asset16","v":"Control Centre - SCADA"},null,1.0069526990208315,0.8055621592166653,1.0750839522181324,0.94138968316970573,1.0616942415629647,7.7774643393166115E-2,6.6306116522692221E-2,0,0,0,0,0,0,0,0,0,0,0,0,0,0,0,0,0,0,0,0,0,0,0,0,0,0,0,0,0,0,0,0,0,0,0,0,0,0,0,0,0,0,0,0,0,0,0,0]
[null,null,null,null,{"$f":"Asset17","v":"Other Equipment"},null,0.44459550086787136,0.44596858674817919,0.44727301833447158,0.44851222834144938,0.44968947784807828,0.45080786487937574,0.45187033255910836,0.45287967685485431,0.45383855393581296,0.45474948716272373,0.4556148737282889,0.45643699096557583,0.45721800234099841,0.45795996314764986,0.45866482591396879,0.45933444554197173,0.45997058418857451,0.46057491590284716,0.4611490310314062,0.46169444040353724,0.46221257930706178,0.46270481126541008,0.46317243162584093,0.46361667096825027,0.46403869834353911,0.46443962435006353,0.27387474419702396,-6.8748786968775514E-3,-6.5311347620336749E-3,-6.2045780239319889E-3,-5.8943491227353871E-3,-5.5996316665986199E-3,-5.3196500832686901E-3,-5.0536675791052529E-3,-4.8009842001499881E-3,-9.1218699802849801E-2,0,0,0,0,0,0,0,0,0,0,0,0,0,0,0,0,0,0,0]
[null,null,null,null,{"$f":"Asset18","v":"Generation Assets"},null,0.99637722566383635,0.99637722566383635,0.99637722566383635,0.99637722566383635,0.99637722566383635,0.50409118500995476,0,0,0,0,0,0,0,0,0,0,0,0,0,0,0,0,0,0,0,0,0,0,0,0,0,0,0,0,0,0,0,0,0,0,0,0,0,0,0,0,0,0,0,0,0,0,0,0,0]
[null,null,null,null,{"$f":"Asset19","v":"Motor Vehicles"},null,19.916946857860548,19.323226424997376,18.708307682059818,2.4772964700432718,2.1102895855924166,3.771957924635041,3.6930328597338864,4.6691743327874704,-7.3230914610017699E-16,-3.5741348244677081E-16,0,0,0,0,0,0,0,0,0,0,0,0,0,0,0,0,0,0,0,0,0,0,0,0,0,0,0,0,0,0,0,0,0,0,0,0,0,0,0,0,0,0,0,0,0]
[null,null,null,null,{"$f":"Asset20","v":"Plant & Equipment"},null,0.71022402201600021,0.42613441320959994,0.25568064792576028,0.1534083887554562,9.2045033253273803E-2,6.7888288921190656E-2,4.127929492746274E-2,2.8899966031257662E-2,0,0,0,0,0,0,0,0,0,0,0,0,0,0,0,0,0,0,0,0,0,0,0,0,0,0,0,0,0,0,0,0,0,0,0,0,0,0,0,0,0,0,0,0,0,0,0]
[null,null,null,null,{"$f":"Asset21","v":"Buildings"},null,13.838924056839618,13.839066852308278,13.839202508003503,13.839331380913967,13.839453810178908,13.839570117980603,13.839680610392213,13.839785578183241,13.839885297584718,13.839980031016122,13.840070027775955,13.840155524697797,13.840236746773547,13.840313907745509,13.840387210668872,13.840456848446069,13.840523004334406,13.840585852428324,13.840645558117547,13.840702278522309,13.840756162906834,13.840807353072131,13.840855983729165,13.840902182853347,3.7235929878841181,-7.92199481898791E-4,-7.5258950780385139E-4,-7.1496003241365883E-4,-6.7921203079297603E-4,-6.4525142925332712E-4,-6.1298885779066084E-4,-5.8233941490112785E-4,-5.5322244415607143E-4,-5.2556132194826809E-4,-4.9928325585085471E-4,-9.4863818611662376E-3,0,0,0,0,0,0,0,0,0,0,0,0,0,0,0,0,0,0,0]
[null,null,null,null,{"$f":"Asset22","v":"Office Equipment & Furniture"},null,0,0,0,0,0,0,0,0,0,0,0,0,0,0,0,0,0,0,0,0,0,0,0,0,0,0,0,0,0,0,0,0,0,0,0,0,0,0,0,0,0,0,0,0,0,0,0,0,0,0,0,0,0,0,0]
[null,null,null,null,{"$f":"Asset23","v":"Initial Leases (10 yr life)"},null,13.321395421648113,7.1723908335907822,3.8616968148981323,2.0791814941752826,2.4252221764735751,0,0,0,0,0,0,0,0,0,0,0,0,0,0,0,0,0,0,0,0,0,0,0,0,0,0,0,0,0,0,0,0,0,0,0,0,0,0,0,0,0,0,0,0,0,0,0,0,0,0]
[null,null,null,null,{"$f":"Asset24","v":"Lease Extensions (5yr Life)"},null,0,0,0,0,0,0,0,0,0,0,0,0,0,0,0,0,0,0,0,0,0,0,0,0,0,0,0,0,0,0,0,0,0,0,0,0,0,0,0,0,0,0,0,0,0,0,0,0,0,0,0,0,0,0,0]
[null,null,null,null,{"$f":"Asset25","v":"Land & Easements - combined"},null,0,0,0,0,0,0,0,0,0,0,0,0,0,0,0,0,0,0,0,0,0,0,0,0,0,0,0,0,0,0,0,0,0,0,0,0,0,0,0,0,0,0,0,0,0,0,0,0,0,0,0,0,0,0,0]
[null,null,null,null,{"$f":"Asset26","v":"Communications"},null,0.16706924134399997,0.1336553930752,0.10692431446015999,8.5539451568127964E-2,6.8431561254502393E-2,5.4745249003601913E-2,4.3796199202881546E-2,3.5036959362305227E-2,2.802956748984417E-2,2.2423653991875337E-2,1.793892319350027E-2,1.4351138554800233E-2,1.1480910843840194E-2,9.1847286750721575E-3,7.347782940057712E-3,5.8782263520461642E-3,4.7025810816369498E-3,3.7620648653095552E-3,3.0096518922476585E-3,2.4077215137981224E-3,1.9261772110385101E-3,1.5409417688308001E-3,1.2327534150646301E-3,9.8620273205168602E-4,7.8896218564136202E-4,2.2221742484107797E-3,8.0814118447093686E-4,1.2553330968373411E-4,0,0,0,0,0,0,0,0,0,0,0,0,0,0,0,0,0,0,0,0,0,0,0,0,0,0,0]
[null,null,null,null,{"$f":"Asset27","v":"In-house software"},null,20.1417322,6.1555305999999987,0,0,0,0,0,0,0,0,0,0,0,0,0,0,0,0,0,0,0,0,0,0,0,0,0,0,0,0,0,0,0,0,0,0,0,0,0,0,0,0,0,0,0,0,0,0,0,0,0,0,0,0,0]
[null,null,null,null,{"$f":"Asset28","v":"IT Systems"},null,0.63893622527999971,0.35546900543999982,0.53320350815999973,0,0,0,0,0,0,0,0,0,0,0,0,0,0,0,0,0,0,0,0,0,0,0,0,0,0,0,0,0,0,0,0,0,0,0,0,0,0,0,0,0,0,0,0,0,0,0,0,0,0,0,0]
[null,null,null,null,{"$f":"Asset29","v":"Legacy ICT Assets"},null,0,0,0,0,0,0,0,0,0,0,0,0,0,0,0,0,0,0,0,0,0,0,0,0,0,0,0,0,0,0,0,0,0,0,0,0,0,0,0,0,0,0,0,0,0,0,0,0,0,0,0,0,0,0,0]
[null,null,null,null,{"$f":"Asset30","v":"Buildings - capital works"},null,1.8472266750000002,1.8472266750000002,1.8472266750000002,1.8472266750000002,1.8472266750000002,1.8472266750000002,1.8472266750000002,1.8472266750000002,1.8472266750000002,1.8472266750000002,1.8472266750000002,1.8472266750000002,1.8472266750000002,1.8472266750000002,1.8472266750000002,1.8472266750000002,1.8472266750000002,1.8472266750000002,1.8472266750000002,1.8472266750000002,1.8472266750000002,1.8472266750000002,1.8472266750000002,1.8472266750000002,1.8472266750000002,1.8472266750000002,1.8472266750000002,1.8472266750000002,1.8472266750000002,1.8472266750000002,1.8472266750000002,1.8472266750000002,1.8472266750000002,1.8472266750000002,1.8472266750000166,1.1466906000000086,0.75232552500000338,0,0,0,0,0,0,0,0,0,0,0,0,0,0,0,0,0,0]
[null,null,null,null,{"$f":"Asset31","v":0}]
[null,null,null,null,{"$f":"Asset32","v":0}]
[null,null,null,null,{"$f":"Asset33","v":0}]
[null,null,null,null,{"$f":"Asset34","v":0}]
[null,null,null,null,{"$f":"Asset35","v":0}]
[null,null,null,null,{"$f":"Asset36","v":0}]
[null,null,null,null,{"$f":"Asset37","v":0}]
[null,null,null,null,{"$f":"Asset38","v":0}]
[null,null,null,null,{"$f":"Asset39","v":0}]
[null,null,null,null,{"$f":"Asset40","v":0}]
[null,null,null,null,{"$f":"Asset41","v":0}]
[null,null,null,null,{"$f":"Asset42","v":0}]
[null,null,null,null,{"$f":"Asset43","v":0}]
[null,null,null,null,{"$f":"Asset44","v":0}]
[null,null,null,null,{"$f":"Asset45","v":0}]
[null,null,null,null,{"$f":"Asset46","v":0}]
[null,null,null,null,{"$f":"Asset47","v":0}]
[null,null,null,null,{"$f":"Asset48","v":0}]
[null,null,null,null,{"$f":"Asset49","v":0}]
[null,null,null,null,{"$f":"Asset50","v":"Equity raising costs"}]
[null,null,null,null,"Total",null,{"$f":"SUM(G472:G521)","v":367.5645628544666},342.60952527866732,329.59475494948094,{"$f":"SUM(J472:J521)","v":307.81984803055957},{"$f":"SUM(K472:K521)","v":305.06003811151282},300.1727922747466,297.08595731767383,295.66091857035639,288.77131400353574,286.70015273445483,284.7401505467285,282.88324072550807,278.01214900569505,276.18476393212688,274.59744719509507,273.08899653948203,263.57339480951708,241.18238843166355,239.8842802517905,238.64870587581353,222.64124940148753,188.35638165060755,187.27240787833836,186.29629723752461,170.51640748346031,164.39832731826229,150.6143181876179,120.96699672170919,48.67284632830269,31.67088142475377,22.646943548898246,20.602484699621851,22.66727416219447,14.448113565529619,13.508482384070302,12.076302520900914,11.311131501909315,10.078904670754071,9.6191983195137496,9.1768710235437077,21.137111225170628,23.10518228279313,22.889931590381437,6.3176350829986534,6.1012649973143507,28.241700687198435,29.074932199234031,32.075920797175989,1.4870334283046382,1.4651124127353949,3.20606651859319,4.0798850423940189,5.9638661351378737,0.43220607611204898,0.42923540792829989]
[]
[null,null,null,null,"Energy Delivered Forecast (MWh)"]
[null,null,null,null,"Year",{"$f":"(LEFT(G525,4)-1&IF(MID(G525,5,1)=\"\",\"\",\"-\"&TEXT(MOD(MID(G525,6,2)-1,100),\"00\")))","v":"2024-25"},{"$f":"G60","v":"2025-26"},"2026-27","2027-28","2028-29","2029-30","2030-31","2031-32","2032-33","2033-34","2034-35"]
[null,null,null,null,"Energy",13512937.813199997,13471525.885199996,13439614.598199999,13440321.150199998,13381012.524199998,13368452.483199997,{"$f":"SUM(M623,S623,Y623,AE623,AK623)/1000","v":0},{"$f":"SUM(N623,T623,Z623,AF623,AL623)/1000","v":0},{"$f":"SUM(O623,U623,AA623,AG623,AM623)/1000","v":0},{"$f":"SUM(P623,V623,AB623,AH623,AN623)/1000","v":0},{"$f":"SUM(Q623,W623,AC623,AI623,AO623)/1000","v":0}]
[]
[null,null,null,null,{"$f":"\"Base Year Prices per Tariff Component for \"&$F$525","v":"Base Year Prices per Tariff Component for 2024-25"}]
[]
[null,null,null,null,null,"Standing Charge ($ per customer per year)","Non TOU Energy (c/kWh)","Peak Energy (c/KWh) BLK 1","Peak Energy (c/KWh) BLK 2","Off Peak Energy (c/kWh) BLK 1","Off Peak Energy (c/kWh) BLK 2","Peak Demand ($/kVa) BLK 1","Peak Demand ($/kVa) BLK 2","Off Peak Demand ($/kVa) BLK 1","Off Peak Demand ($/kVa) BLK 2"]
[null,null,null,null,null,{"$f":"(LEFT(G525,4)-1&IF(MID(G525,5,1)=\"\",\"\",\"-\"&TEXT(MID(G525,6,2)-1,\"00\")))","v":"2024-25"},{"$f":"F531","v":"2024-25"},{"$f":"G531","v":"2024-25"},"2024-25","2024-25","2024-25","2024-25","2024-25","2024-25","2024-25"]
[]
[]
[]
[]
[]
[]
[]
[]
[]
[]
[]
[]
[]
[]
[]
[]
[]
[]
[]
[]
[]
[]
[]
[]
[]
[]
[]
[null,null,null,null,"Forecast Sales Quantities (Years 1-5, including final year of previous regulatory control period)"]
[]
[null,null,null,null,"Tariff Quantities","Customer Numbers",null,null,null,null,null,"Non TOU Energy (kWh)",null,null,null,null,null,"Peak Energy (KWh) BLK 1",null,null,null,null,null,"Peak Energy (KWh) BLK 2",null,null,null,null,null,"Off Peak Energy (KWh) BLK 1",null,null,null,null,null,"Off Peak Energy (KWh) BLK 2",null,null,null,null,null,"Peak Demand (kVa) BLK 1",null,null,null,null,null,"Peak Demand (kVa) BLK 2",null,null,null,null,null,"Off Peak Demand (kVa) BLK 1",null,null,null,null,null,"Off Peak Demand (kVa) BLK 2"]
[null,null,null,null,"Year",{"$f":"F531","v":"2024-25"},{"$f":"G525","v":"2025-26"},{"$f":"H525","v":"2026-27"},{"$f":"I525","v":"2027-28"},{"$f":"J525","v":"2028-29"},{"$f":"K525","v":"2029-30"},{"$f":"F562","v":"2024-25"},"2025-26","2026-27","2027-28","2028-29","2029-30","2024-25","2025-26","2026-27","2027-28","2028-29","2029-30","2024-25","2025-26","2026-27","2027-28","2028-29","2029-30","2024-25","2025-26","2026-27","2027-28","2028-29","2029-30","2024-25","2025-26","2026-27","2027-28","2028-29","2029-30","2024-25","2025-26","2026-27","2027-28","2028-29","2029-30","2024-25","2025-26","2026-27","2027-28","2028-29","2029-30","2024-25","2025-26","2026-27","2027-28","2028-29","2029-30","2024-25","2025-26","2026-27","2027-28","2028-29","2029-30"]
[null,null,null,null,{"$f":"E532","v":0}]
[null,null,null,null,0]
[null,null,null,null,0]
[null,null,null,null,0]
[null,null,null,null,0]
[null,null,null,null,0]
[null,null,null,null,0]
[null,null,null,null,0]
[null,null,null,null,0]
[null,null,null,null,0]
[null,null,null,null,0]
[null,null,null,null,0]
[null,null,null,null,0]
[null,null,null,null,0]
[null,null,null,null,0]
[null,null,null,null,0]
[null,null,null,null,0]
[null,null,null,null,0]
[null,null,null,null,0]
[null,null,null,null,0]
[null,null,null,null,0]
[null,null,null,null,0]
[null,null,null,null,0]
[null,null,null,null,0]
[null,null,null,null,0]
[null,null,null,null,0]
[null,null,null,null,"Total",{"$f":"SUM(F563:F588)","v":0},{"$f":"SUM(G563:G588)","v":0},{"$f":"SUM(H563:H588)","v":0},0,0,0,{"$f":"SUM(L563:L588)","v":0},0,{"$f":"SUM(N563:N588)","v":0},0,0,0,0,0,0,0,0,0,0,0,0,0,0,0,0,0,0,0,0,0,0,0,0,0,0,0,0,0,0,0,0,0,0,0,0,0,0,0,0,0,0,0,0,0,0,0,0,0,0,0]
[]
[null,null,null,null,"Forecast Sales Quantities (Years 6-10)"]
[null,null,null,null,"If the regulatory control period is longer than 5 years, expand this section to input forecast sales quantities for years 6 through to 10."]
[null,null,null,null,{"$f":"IF(SUM(G623:K623,M623:Q623,S623:W623,Y623:AC623,AE623:AI623,AK623:AO623,AQ623:AU623,AW623:BA623,BC623:BG623,BI623:BM623)>0,IF($R$7<6,\"Caution - there appears to be data entered below for years 6 to 10, when the regulatory control period is only \"&$R$7&\" years.\",\"\"),\"\")","v":""}]
[null,null,null,null,"Note that year 5 quantities are transferred from the table above as a reference point"]
[null,null,null,null,"Tariff Quantities",{"$f":"F561&\" [years 6-10]\"","v":"Customer Numbers [years 6-10]"},null,null,null,null,null,{"$f":"L561&\" [years 6-10]\"","v":"Non TOU Energy (kWh) [years 6-10]"},null,null,null,null,null,{"$f":"R561&\" [years 6-10]\"","v":"Peak Energy (KWh) BLK 1 [years 6-10]"},null,null,null,null,null,{"$f":"X561&\" [years 6-10]\"","v":"Peak Energy (KWh) BLK 2 [years 6-10]"},null,null,null,null,null,{"$f":"AD561&\" [years 6-10]\"","v":"Off Peak Energy (KWh) BLK 1 [years 6-10]"},null,null,null,null,null,{"$f":"AJ561&\" [years 6-10]\"","v":"Off Peak Energy (KWh) BLK 2 [years 6-10]"},null,null,null,null,null,{"$f":"AP561&\" [years 6-10]\"","v":"Peak Demand (kVa) BLK 1 [years 6-10]"},null,null,null,null,null,{"$f":"AV561&\" [years 6-10]\"","v":"Peak Demand (kVa) BLK 2 [years 6-10]"},null,null,null,null,null,{"$f":"BB561&\" [years 6-10]\"","v":"Off Peak Demand (kVa) BLK 1 [years 6-10]"},null,null,null,null,null,{"$f":"BH561&\" [years 6-10]\"","v":"Off Peak Demand (kVa) BLK 2 [years 6-10]"}]
[null,null,null,null,"Year",{"$f":"K562","v":"2029-30"},{"$f":"L525","v":"2030-31"},{"$f":"M525","v":"2031-32"},{"$f":"N525","v":"2032-33"},{"$f":"O525","v":"2033-34"},{"$f":"P525","v":"2034-35"},{"$f":"F596","v":"2029-30"},"2030-31","2031-32","2032-33","2033-34","2034-35","2029-30","2030-31","2031-32","2032-33","2033-34","2034-35","2029-30","2030-31","2031-32","2032-33","2033-34","2034-35","2029-30","2030-31","2031-32","2032-33","2033-34","2034-35","2029-30","2030-31","2031-32","2032-33","2033-34","2034-35","2029-30","2030-31","2031-32","2032-33","2033-34","2034-35","2029-30","2030-31","2031-32","2032-33","2033-34","2034-35","2029-30","2030-31","2031-32","2032-33","2033-34","2034-35","2029-30","2030-31","2031-32","2032-33","2033-34","2034-35"]
[null,null,null,null,{"$f":"E563","v":0},{"$f":"K563","v":0},null,null,null,null,null,{"$f":"Q563","v":0},null,null,null,null,null,{"$f":"W563","v":0},null,null,null,null,null,{"$f":"AC563","v":0},null,null,null,null,null,{"$f":"AI563","v":0},null,null,null,null,null,{"$f":"AO563","v":0},null,null,null,null,null,{"$f":"AU563","v":0},null,null,null,null,null,{"$f":"BA563","v":0},null,null,null,null,null,{"$f":"BG563","v":0},null,null,null,null,null,{"$f":"BM563","v":0}]
[null,null,null,null,0,{"$f":"K564","v":0},null,null,null,null,null,{"$f":"Q564","v":0},null,null,null,null,null,{"$f":"W564","v":0},null,null,null,null,null,{"$f":"AC564","v":0},null,null,null,null,null,{"$f":"AI564","v":0},null,null,null,null,null,{"$f":"AO564","v":0},null,null,null,null,null,{"$f":"AU564","v":0},null,null,null,null,null,{"$f":"BA564","v":0},null,null,null,null,null,{"$f":"BG564","v":0},null,null,null,null,null,{"$f":"BM564","v":0}]
[null,null,null,null,0,0,null,null,null,null,null,0,null,null,null,null,null,0,null,null,null,null,null,0,null,null,null,null,null,0,null,null,null,null,null,0,null,null,null,null,null,0,null,null,null,null,null,0,null,null,null,null,null,0,null,null,null,null,null,0]
[null,null,null,null,0,0,null,null,null,null,null,0,null,null,null,null,null,0,null,null,null,null,null,0,null,null,null,null,null,0,null,null,null,null,null,0,null,null,null,null,null,0,null,null,null,null,null,0,null,null,null,null,null,0,null,null,null,null,null,0]
[null,null,null,null,0,0,null,null,null,null,null,0,null,null,null,null,null,0,null,null,null,null,null,0,null,null,null,null,null,0,null,null,null,null,null,0,null,null,null,null,null,0,null,null,null,null,null,0,null,null,null,null,null,0,null,null,null,null,null,0]
[null,null,null,null,0,0,null,null,null,null,null,0,null,null,null,null,null,0,null,null,null,null,null,0,null,null,null,null,null,0,null,null,null,null,null,0,null,null,null,null,null,0,null,null,null,null,null,0,null,null,null,null,null,0,null,null,null,null,null,0]
[null,null,null,null,0,0,null,null,null,null,null,0,null,null,null,null,null,0,null,null,null,null,null,0,null,null,null,null,null,0,null,null,null,null,null,0,null,null,null,null,null,0,null,null,null,null,null,0,null,null,null,null,null,0,null,null,null,null,null,0]
[null,null,null,null,0,0,null,null,null,null,null,0,null,null,null,null,null,0,null,null,null,null,null,0,null,null,null,null,null,0,null,null,null,null,null,0,null,null,null,null,null,0,null,null,null,null,null,0,null,null,null,null,null,0,null,null,null,null,null,0]
[null,null,null,null,0,0,null,null,null,null,null,0,null,null,null,null,null,0,null,null,null,null,null,0,null,null,null,null,null,0,null,null,null,null,null,0,null,null,null,null,null,0,null,null,null,null,null,0,null,null,null,null,null,0,null,null,null,null,null,0]
[null,null,null,null,0,0,null,null,null,null,null,0,null,null,null,null,null,0,null,null,null,null,null,0,null,null,null,null,null,0,null,null,null,null,null,0,null,null,null,null,null,0,null,null,null,null,null,0,null,null,null,null,null,0,null,null,null,null,null,0]
[null,null,null,null,0,0,null,null,null,null,null,0,null,null,null,null,null,0,null,null,null,null,null,0,null,null,null,null,null,0,null,null,null,null,null,0,null,null,null,null,null,0,null,null,null,null,null,0,null,null,null,null,null,0,null,null,null,null,null,0]
[null,null,null,null,0,0,null,null,null,null,null,0,null,null,null,null,null,0,null,null,null,null,null,0,null,null,null,null,null,0,null,null,null,null,null,0,null,null,null,null,null,0,null,null,null,null,null,0,null,null,null,null,null,0,null,null,null,null,null,0]
[null,null,null,null,0,0,null,null,null,null,null,0,null,null,null,null,null,0,null,null,null,null,null,0,null,null,null,null,null,0,null,null,null,null,null,0,null,null,null,null,null,0,null,null,null,null,null,0,null,null,null,null,null,0,null,null,null,null,null,0]
[null,null,null,null,0,0,null,null,null,null,null,0,null,null,null,null,null,0,null,null,null,null,null,0,null,null,null,null,null,0,null,null,null,null,null,0,null,null,null,null,null,0,null,null,null,null,null,0,null,null,null,null,null,0,null,null,null,null,null,0]
[null,null,null,null,0,0,null,null,null,null,null,0,null,null,null,null,null,0,null,null,null,null,null,0,null,null,null,null,null,0,null,null,null,null,null,0,null,null,null,null,null,0,null,null,null,null,null,0,null,null,null,null,null,0,null,null,null,null,null,0]
[null,null,null,null,0,0,null,null,null,null,null,0,null,null,null,null,null,0,null,null,null,null,null,0,null,null,null,null,null,0,null,null,null,null,null,0,null,null,null,null,null,0,null,null,null,null,null,0,null,null,null,null,null,0,null,null,null,null,null,0]
[null,null,null,null,0,0,null,null,null,null,null,0,null,null,null,null,null,0,null,null,null,null,null,0,null,null,null,null,null,0,null,null,null,null,null,0,null,null,null,null,null,0,null,null,null,null,null,0,null,null,null,null,null,0,null,null,null,null,null,0]
[null,null,null,null,0,0,null,null,null,null,null,0,null,null,null,null,null,0,null,null,null,null,null,0,null,null,null,null,null,0,null,null,null,null,null,0,null,null,null,null,null,0,null,null,null,null,null,0,null,null,null,null,null,0,null,null,null,null,null,0]
[null,null,null,null,0,0,null,null,null,null,null,0,null,null,null,null,null,0,null,null,null,null,null,0,null,null,null,null,null,0,null,null,null,null,null,0,null,null,null,null,null,0,null,null,null,null,null,0,null,null,null,null,null,0,null,null,null,null,null,0]
[null,null,null,null,0,0,null,null,null,null,null,0,null,null,null,null,null,0,null,null,null,null,null,0,null,null,null,null,null,0,null,null,null,null,null,0,null,null,null,null,null,0,null,null,null,null,null,0,null,null,null,null,null,0,null,null,null,null,null,0]
[null,null,null,null,0,0,null,null,null,null,null,0,null,null,null,null,null,0,null,null,null,null,null,0,null,null,null,null,null,0,null,null,null,null,null,0,null,null,null,null,null,0,null,null,null,null,null,0,null,null,null,null,null,0,null,null,null,null,null,0]
[null,null,null,null,0,0,null,null,null,null,null,0,null,null,null,null,null,0,null,null,null,null,null,0,null,null,null,null,null,0,null,null,null,null,null,0,null,null,null,null,null,0,null,null,null,null,null,0,null,null,null,null,null,0,null,null,null,null,null,0]
[null,null,null,null,0,0,null,null,null,null,null,0,null,null,null,null,null,0,null,null,null,null,null,0,null,null,null,null,null,0,null,null,null,null,null,0,null,null,null,null,null,0,null,null,null,null,null,0,null,null,null,null,null,0,null,null,null,null,null,0]
[null,null,null,null,0,0,null,null,null,null,null,0,null,null,null,null,null,0,null,null,null,null,null,0,null,null,null,null,null,0,null,null,null,null,null,0,null,null,null,null,null,0,null,null,null,null,null,0,null,null,null,null,null,0,null,null,null,null,null,0]
[null,null,null,null,0,0,null,null,null,null,null,0,null,null,null,null,null,0,null,null,null,null,null,0,null,null,null,null,null,0,null,null,null,null,null,0,null,null,null,null,null,0,null,null,null,null,null,0,null,null,null,null,null,0,null,null,null,null,null,0]
[null,null,null,null,0,0,null,null,null,null,null,0,null,null,null,null,null,0,null,null,null,null,null,0,null,null,null,null,null,0,null,null,null,null,null,0,null,null,null,null,null,0,null,null,null,null,null,0,null,null,null,null,null,0,null,null,null,null,null,0]
[null,null,null,null,"Total",{"$f":"K589","v":0},{"$f":"SUM(G597:G622)","v":0},0,0,0,0,0,0,0,{"$f":"SUM(O597:O622)","v":0},0,0,0,0,0,0,0,0,0,0,0,0,0,0,0,0,0,0,0,0,0,0,0,0,0,0,0,0,0,0,0,0,0,0,0,0,0,0,0,0,0,0,0,0,0,0,0,0,0,0]

{"sheet":"Assets","index":12,"n_rows":1449,"n_cols":61,"rows_kept":1449,"cut":false,"hidden":false,"merged":[[1378,3,1388,3],[1391,3,1401,3],[1404,3,1414,3],[1417,3,1427,3],[1300,3,1310,3],[1313,3,1323,3],[1326,3,1336,3],[1339,3,1349,3],[1352,3,1362,3],[1365,3,1375,3],[1287,3,1297,3],[1144,3,1154,3],[1157,3,1167,3],[1170,3,1180,3],[1183,3,1193,3],[1196,3,1206,3],[1209,3,1219,3],[1222,3,1232,3],[1235,3,1245,3],[1248,3,1258,3],[1261,3,1271,3],[1274,3,1284,3],[1131,3,1141,3],[988,3,998,3],[1001,3,1011,3],[1014,3,1024,3],[1027,3,1037,3],[1040,3,1050,3],[1053,3,1063,3],[1066,3,1076,3],[1079,3,1089,3],[1092,3,1102,3],[1105,3,1115,3],[1118,3,1128,3],[975,3,985,3],[832,3,842,3],[845,3,855,3],[858,3,868,3],[871,3,881,3],[884,3,894,3],[897,3,907,3],[910,3,920,3],[923,3,933,3],[936,3,946,3],[949,3,959,3],[962,3,972,3],[819,3,829,3],[662,3,672,3],[675,3,685,3],[688,3,698,3],[701,3,711,3],[714,3,724,3],[727,3,737,3],[740,3,750,3],[753,3,763,3],[780,3,790,3],[793,3,803,3],[806,3,816,3],[649,3,659,3],[506,3,516,3],[519,3,529,3],[532,3,542,3],[545,3,555,3],[558,3,568,3],[571,3,581,3],[584,3,594,3],[597,3,607,3],[610,3,620,3],[623,3,633,3],[636,3,646,3],[493,3,503,3],[350,3,360,3],[363,3,373,3],[376,3,386,3],[389,3,399,3],[402,3,412,3],[415,3,425,3],[428,3,438,3],[441,3,451,3],[454,3,464,3],[467,3,477,3],[480,3,490,3],[337,3,347,3],[194,3,204,3],[207,3,217,3],[220,3,230,3],[233,3,243,3],[246,3,256,3],[259,3,269,3],[272,3,282,3],[285,3,295,3],[298,3,308,3],[311,3,321,3],[324,3,334,3],[181,3,191,3],[116,3,126,3],[129,3,139,3],[142,3,152,3],[155,3,165,3],[168,3,178,3]]}
[]
[null,"Ergon - Asset Roll Forward - DNSP PTRM - version 5"]
[null,null,null,null,null,0,{"$f":"F3+1","v":1},2,3,4,5,6,7,8,9,10,11,12,13,14,15,16,17,18,19,20,21,22,23,24,25,26,27,28,29,30,31,32,33,34,35,36,37,38,39,40,41,42,43,44,45,46,47,48,49,50,51,52,53,54,55]
[null,"Year",null,null,null,"2024-25","2025-26","2026-27","2027-28","2028-29","2029-30","2030-31","2031-32","2032-33","2033-34","2034-35",{"$f":"(LEFT(P4,4)+1&IF(MID(P4,5,1)=\"\",\"\",\"-\"&TEXT(MID(P4,6,2)+1,\"00\")))","v":"2035-36"},{"$f":"(LEFT(Q4,4)+1&IF(MID(Q4,5,1)=\"\",\"\",\"-\"&TEXT(MID(Q4,6,2)+1,\"00\")))","v":"2036-37"},"2037-38","2038-39","2039-40","2040-41","2041-42","2042-43","2043-44","2044-45","2045-46","2046-47","2047-48","2048-49","2049-50","2050-51","2051-52","2052-53","2053-54","2054-55","2055-56","2056-57","2057-58","2058-59","2059-60","2060-61","2061-62","2062-63","2063-64","2064-65","2065-66","2066-67","2067-68","2068-69","2069-70","2070-71","2071-72","2072-73","2073-74","2074-75","2075-76","2076-77","2077-78","2078-79","2079-80"]
[]
[null,"Inflation Assumption (CPI % increase)",null,2.7997811278454687E-2,null,null,2.7997811278454687E-2,2.7997811278454687E-2,2.7997811278454687E-2,2.7997811278454687E-2,2.7997811278454687E-2,2.7997811278454687E-2,2.7997811278454687E-2,2.7997811278454687E-2,2.7997811278454687E-2,2.7997811278454687E-2,2.7997811278454687E-2,2.7997811278454687E-2,2.7997811278454687E-2,2.7997811278454687E-2,2.7997811278454687E-2,2.7997811278454687E-2,2.7997811278454687E-2,2.7997811278454687E-2,2.7997811278454687E-2,2.7997811278454687E-2,2.7997811278454687E-2,2.7997811278454687E-2,2.7997811278454687E-2,2.7997811278454687E-2,2.7997811278454687E-2,2.7997811278454687E-2,2.7997811278454687E-2,2.7997811278454687E-2,2.7997811278454687E-2,2.7997811278454687E-2,2.7997811278454687E-2,2.7997811278454687E-2,2.7997811278454687E-2,2.7997811278454687E-2,2.7997811278454687E-2,2.7997811278454687E-2,2.7997811278454687E-2,2.7997811278454687E-2,2.7997811278454687E-2,2.7997811278454687E-2,2.7997811278454687E-2,2.7997811278454687E-2,2.7997811278454687E-2,2.7997811278454687E-2,2.7997811278454687E-2,2.7997811278454687E-2,2.7997811278454687E-2,2.7997811278454687E-2,2.7997811278454687E-2,2.7997811278454687E-2,2.7997811278454687E-2,2.7997811278454687E-2,2.7997811278454687E-2,2.7997811278454687E-2,2.7997811278454687E-2]
[null,"Cumulative Inflation Index (CPI end period)",null,null,null,1,1.0279978112784547,1.0567794999932933,1.0863670129970453,1.116782911606075,1.1480503888042251,1.1801932869281222,1.2132361158476348,1.2472040716553423,1.2821230558792689,1.3180196952335324,1.3549213619219671,1.3928561945102051,1.4318531193821284,1.4719418727970559,1.513153023564483,1.5555179963536645,1.5990690956558145,1.6438395304171951,1.6898634393618792,1.7371759170234935,1.7858130405057937,1.8358118969924784,1.8872106120272156,1.9400483785854505,1.9943654869601579,2.050203355484332,2.1076045621136368,2.1666128768933044,2.2272732953340331,2.2896320727223372,2.3537367593915142,2.4196362369801192,2.4873807557055989,2.5570219726815044,2.6286129913075031,2.702208401762225,2.7778643226298185,2.8556384436919604,2.9355900699179478,3.0177801666864159,3.1022714062731658,3.1891282156405483,3.2784168255648471,3.3702053211391223,3.4645636936900193,3.5615638941481382,3.6612798879126558,3.7637877112520362,3.8691655292838374,3.9774936955778286,4.0888548134278597,4.2033337988392141,4.3210179452794648,4.4419969902422149,4.56636318367448]
[]
[null,"Opening Regulatory Asset Base (RAB)",null,null,null,16250.670513201945]
[null,"Real Net Capital Expenditure (capex)",null,null,null,null,1130.1547358615605,1132.6246343105813,1139.3661665615216,1173.4355529045547,1223.900890717895,0,0,0,0,0]
[null,null,{"$f":"Asset1","v":"Overhead Sub-Transmission Lines"},null,null,null,79.526585315955742,81.708132499088265,84.562368388285108,86.965759656387974,90.617103970791817,0,0,0,0,0]
[null,null,{"$f":"Asset2","v":"Underground Sub-Transmission Cables"},null,null,null,4.8198062797376853,4.9944962103241419,5.162823595679928,5.2741572875934866,5.4808673833340382,0,0,0,0,0]
[null,null,{"$f":"Asset3","v":"Overhead Distribution Lines"},null,null,null,462.42461135856331,472.76387585147864,489.61765521673374,505.48851924179564,527.52551524104001,0,0,0,0,0]
[null,null,{"$f":"Asset4","v":"Underground Distribution Cables"},null,null,null,28.48178950081336,29.411326555433238,30.417294597329271,31.158250747093081,32.415051823164355,0,0,0,0,0]
[null,null,{"$f":"Asset5","v":"Distribution Equipment"},null,null,null,3.3427217836739769,3.4657763446816539,3.5823095250760568,3.6579879311664527,3.8006968602214006,0,0,0,0,0]
[null,null,{"$f":"Asset6","v":"Substation Bays"},null,null,null,102.8514217132394,105.63744412207348,109.33269368594073,112.46957044135044,117.20398238080583,0,0,0,0,0]
[null,null,{"$f":"Asset7","v":"Substation Establishment"},null,null,null,45.621128892669731,47.215624918519438,48.897738404500451,50.109055375469204,52.201642367121309,0,0,0,0,0]
[null,null,{"$f":"Asset8","v":"Distribution Substation Switchgear"},null,null,null,51.041572663454737,52.684990460223446,54.490217438499322,55.836158855981182,58.096129714066556,0,0,0,0,0]
[null,null,{"$f":"Asset9","v":"Zone Transformers"},null,null,null,15.462681831559085,15.908557769277847,16.461138388740956,16.910895270281301,17.613387273484506,0,0,0,0,0]
[null,null,{"$f":"Asset10","v":"Distribution Transformers"},null,null,null,100.237640415082,102.90273834737923,106.50957554624085,109.60724215750641,114.2385478545598,0,0,0,0,0]
[null,null,{"$f":"Asset11","v":"Low Voltage Services"},null,null,null,36.52973041328292,37.260450002498615,38.601266422433866,39.924538985126851,41.69491858850035,0,0,0,0,0]
[null,null,{"$f":"Asset12","v":"Metering"},null,null,null,2.2932399877070804,2.3785736653538851,2.4584199140287559,2.5096001571630371,2.6071905424802844,0,0,0,0,0]
[null,null,{"$f":"Asset13","v":"Communications – Pilot Wires"},null,null,null,13.436934603345646,13.768441015964221,14.25476394042964,14.690820692338088,15.320493114755905,0,0,0,0,0]
[null,null,{"$f":"Asset14","v":"Land & Easements (System) - combined"},null,null,null,0.47381264447245058,0.49195085181947168,0.50839249637388839,0.51855709834652031,0.53854637132920813,0,0,0,0,0]
[null,null,{"$f":"Asset15","v":"Land Improvements"},null,null,null,0.47381264447245058,0.49195085181947168,0.50839249637388839,0.51855709834652031,0.53854637132920813,0,0,0,0,0]
[null,null,{"$f":"Asset16","v":"Control Centre - SCADA"},null,null,null,4.3560819712696475,4.5167020002843712,4.6685340924852765,4.7669438258380143,4.9528259645252035,0,0,0,0,0]
[null,null,{"$f":"Asset17","v":"Other Equipment"},null,null,null,0,0,0,0,0,0,0,0,0,0]
[null,null,{"$f":"Asset18","v":"Generation Assets"},null,null,null,0,0,0,0,0,0,0,0,0,0]
[null,null,{"$f":"Asset19","v":"Motor Vehicles"},null,null,null,57.666318942359005,56.575579982276849,43.968195865777183,35.82197759374008,48.806655650740659,0,0,0,0,0]
[null,null,{"$f":"Asset20","v":"Plant & Equipment"},null,null,null,6.8076028020555199,6.4016346125123418,6.5480195452288754,6.2943530670669521,6.1423938755225329,0,0,0,0,0]
[null,null,{"$f":"Asset21","v":"Buildings"},null,null,null,30.508478163441143,24.814504095066454,29.851272424132599,33.723447419473814,31.580450481139582,0,0,0,0,0]
[null,null,{"$f":"Asset22","v":"Office Equipment & Furniture"},null,null,null,1.878441330657735,1.5278569400359392,1.8379764337576339,2.0763906054453094,1.9444438725117792,0,0,0,0,0]
[null,null,{"$f":"Asset23","v":"Initial Leases (10 yr life)"},null,null,null,0,0,0,0,0,0,0,0,0,0]
[null,null,{"$f":"Asset24","v":"Lease Extensions (5yr Life)"},null,null,null,0,0,0,14.97270912134128,2.5851737216614028,0,0,0,0,0]
[null,null,{"$f":"Asset25","v":"Land & Easements - combined"},null,null,null,0,0,-4.3508967841194686,0,-2.4300252569676877,0,0,0,0,0]
[null,null,{"$f":"Asset26","v":"Communications"},null,null,null,0,0,0,0,0,0,0,0,0,0]
[null,null,{"$f":"Asset27","v":"In-house software"},null,null,null,78.581942908359721,64.546429973372483,49.026028344772712,38.28867283812292,48.099143274762461,0,0,0,0,0]
[null,null,{"$f":"Asset28","v":"IT Systems"},null,null,null,3.3383796953883511,3.1575972410977897,2.4519865828204659,1.8513874375798574,2.3272092770145916,0,0,0,0,0]
[null,null,{"$f":"Asset29","v":"Legacy ICT Assets"},null,null,null,0,0,0,0,0,0,0,0,0,0]
[null,null,{"$f":"Asset30","v":"Buildings - capital works"},null,null,null,0,0,0,0,0,0,0,0,0,0]
[null,null,{"$f":"Asset31","v":0},null,null,null,0,0,0,0,0,0,0,0,0,0]
[null,null,{"$f":"Asset32","v":0},null,null,null,0,0,0,0,0,0,0,0,0,0]
[null,null,{"$f":"Asset33","v":0},null,null,null,0,0,0,0,0,0,0,0,0,0]
[null,null,{"$f":"Asset34","v":0},null,null,null,0,0,0,0,0,0,0,0,0,0]
[null,null,{"$f":"Asset35","v":0},null,null,null,0,0,0,0,0,0,0,0,0,0]
[null,null,{"$f":"Asset36","v":0},null,null,null,0,0,0,0,0,0,0,0,0,0]
[null,null,{"$f":"Asset37","v":0},null,null,null,0,0,0,0,0,0,0,0,0,0]
[null,null,{"$f":"Asset38","v":0},null,null,null,0,0,0,0,0,0,0,0,0,0]
[null,null,{"$f":"Asset39","v":0},null,null,null,0,0,0,0,0,0,0,0,0,0]
[null,null,{"$f":"Asset40","v":0},null,null,null,0,0,0,0,0,0,0,0,0,0]
[null,null,{"$f":"Asset41","v":0},null,null,null,0,0,0,0,0,0,0,0,0,0]
[null,null,{"$f":"Asset42","v":0},null,null,null,0,0,0,0,0,0,0,0,0,0]
[null,null,{"$f":"Asset43","v":0},null,null,null,0,0,0,0,0,0,0,0,0,0]
[null,null,{"$f":"Asset44","v":0},null,null,null,0,0,0,0,0,0,0,0,0,0]
[null,null,{"$f":"Asset45","v":0},null,null,null,0,0,0,0,0,0,0,0,0,0]
[null,null,{"$f":"Asset46","v":0},null,null,null,0,0,0,0,0,0,0,0,0,0]
[null,null,{"$f":"Asset47","v":0},null,null,null,0,0,0,0,0,0,0,0,0,0]
[null,null,{"$f":"Asset48","v":0},null,null,null,0,0,0,0,0,0,0,0,0,0]
[null,null,{"$f":"Asset49","v":0},null,null,null,0,0,0,0,0,0,0,0,0,0]
[null,null,{"$f":"Asset50","v":"Equity raising costs"},null,null,null,0,0,0,0,0,0,0,0,0,0]
[null,"Nominal Net Capex",null,null,null,null,1161.7965948716644,1196.934494726823,1237.7698190773344,1310.4727733548323,1405.0998934465169,0,0,0,0,0]
[null,null,{"$f":"Asset1","v":"Overhead Sub-Transmission Lines"},null,null,null,{"$f":"G11*G$7","v":81.753155643251802},86.347479407772255,91.865767557937062,97.121874279095096,104.03300144598043,0,0,0,0,0]
[null,null,{"$f":"Asset2","v":"Underground Sub-Transmission Cables"},null,null,null,4.9547503063564919,5.2780812078647452,5.6087212482694682,5.8900887319070527,6.2923119304210378,0,0,0,0,0]
[null,null,{"$f":"Asset3","v":"Overhead Distribution Lines"},null,null,null,475.3714883578931,499.60717233721704,531.90446960842019,564.52094030229603,605.62587287662518,0,0,0,0,0]
[null,null,{"$f":"Asset4","v":"Underground Distribution Cables"},null,null,null,29.279217268129806,31.08128697139021,33.044345475151765,34.797001989890774,37.214112848692942,0,0,0,0,0]
[null,null,{"$f":"Asset5","v":"Distribution Equipment"},null,null,null,3.4363106773296601,3.6625613926212619,3.8917028983877398,4.085178412387954,4.3633915081041765,0,0,0,0,0]
[null,null,{"$f":"Asset6","v":"Substation Bays"},null,null,null,105.73103640808743,111.63548537989428,118.77543186251634,125.6040943445759,134.55607754168767,0,0,0,0,0]
[null,null,{"$f":"Asset7","v":"Substation Establishment"},null,null,null,46.898420649716755,49.896504493263855,53.120890012808061,55.960936760046543,59.930115815792725,0,0,0,0,0]
[null,null,{"$f":"Asset8","v":"Distribution Substation Switchgear"},null,null,null,52.470624982241674,55.676417875706363,59.196374756222014,62.356868060081993,66.697284306254801,0,0,0,0,0]
[null,null,{"$f":"Asset9","v":"Zone Transformers"},null,null,null,15.895603079337866,16.811837725031864,17.882837741907508,18.885798857810155,20.221056107483275,0,0,0,0,0]
[null,null,{"$f":"Asset10","v":"Distribution Transformers"},null,null,null,103.04407495442106,108.74550437868412,115.70848944175282,122.40749502977214,131.15160928085746,0,0,0,0,0]
[null,null,{"$f":"Asset11","v":"Low Voltage Services"},null,null,null,37.552482911446845,39.376079723165596,41.935142501242623,44.587042892340214,47.867867496688341,0,0,0,0,0]
[null,null,{"$f":"Asset12","v":"Metering"},null,null,null,2.357445688099109,2.5136278887698937,2.6707462986958723,2.8026785704836001,2.9931861159811888,0,0,0,0,0]
[null,null,{"$f":"Asset13","v":"Communications – Pilot Wires"},null,null,null,13.813139362531055,14.550206212537821,15.485905322942539,16.406457506672105,17.588698077067971,0,0,0,0,0]
[null,null,{"$f":"Asset14","v":"Land & Easements (System) - combined"},null,null,null,0.48707836147373579,0.51988357520705608,0.55230083771581229,0.57911570612542473,0.61827837099360194,0,0,0,0,0]
[null,null,{"$f":"Asset15","v":"Land Improvements"},null,null,null,0.48707836147373579,0.51988357520705608,0.55230083771581229,0.57911570612542473,0.61827837099360194,0,0,0,0,0]
[null,null,{"$f":"Asset16","v":"Control Centre - SCADA"},null,null,null,4.4780427322147336,4.7731580814792256,5.0717414371281011,5.3236414052819798,5.6860937742528206,0,0,0,0,0]
[null,null,{"$f":"Asset17","v":"Other Equipment"},null,null,null,{"$f":"G27*G$7","v":0},0,0,0,0,0,0,0,0,0]
[null,null,{"$f":"Asset18","v":"Generation Assets"},null,null,null,0,0,0,0,0,0,0,0,0,0]
[null,null,{"$f":"Asset19","v":"Motor Vehicles"},null,null,null,59.280849657230348,59.787913125501106,47.765597609573398,40.005372436624626,56.03249999606674,0,0,0,0,0]
[null,null,{"$f":"Asset20","v":"Plant & Equipment"},null,null,null,6.9982007805661501,6.7651162249505523,7.1135524343965644,7.0294259449156593,7.0517776769823346,0,0,0,0,0]
[null,null,{"$f":"Asset21","v":"Buildings"},null,null,null,31.362648777454023,26.223459230165858,32.429437657565998,37.661769798514342,36.255948453484876,0,0,0,0,0]
[null,null,{"$f":"Asset22","v":"Office Equipment & Furniture"},null,null,null,1.9310335765311395,1.614607893152463,1.9967169683002424,2.3188775459807136,2.2323195438451413,0,0,0,0,0]
[null,null,{"$f":"Asset23","v":"Initial Leases (10 yr life)"},null,null,null,0,0,0,0,0,0,0,0,0,0]
[null,null,{"$f":"Asset24","v":"Lease Extensions (5yr Life)"},null,null,null,0,0,0,16.721265687162351,2.9679096962798388,0,0,0,0,0]
[null,null,{"$f":"Asset25","v":"Land & Easements - combined"},null,null,null,0,0,-4.726670743222317,0,-2.7897914410658409,0,0,0,0,0]
[null,null,{"$f":"Asset26","v":"Communications"},null,null,null,0,0,0,0,0,0,0,0,0,0]
[null,null,{"$f":"Asset27","v":"In-house software"},null,null,null,80.782065315802271,68.211343993612701,53.260259972019206,42.760135533691354,55.220240137741172,0,0,0,0,0]
[null,null,{"$f":"Asset28","v":"IT Systems"},null,null,null,3.4318470200756592,3.3368840336275247,2.6637573398875016,2.0675978530513435,2.6717535153054013,0,0,0,0,0]
[null,null,{"$f":"Asset29","v":"Legacy ICT Assets"},null,null,null,0,0,0,0,0,0,0,0,0,0]
[null,null,{"$f":"Asset30","v":"Buildings - capital works"},null,null,null,0,0,0,0,0,0,0,0,0,0]
[null,null,{"$f":"Asset31","v":0},null,null,null,0,0,0,0,0,0,0,0,0,0]
[null,null,{"$f":"Asset32","v":0},null,null,null,0,0,0,0,0,0,0,0,0,0]
[null,null,{"$f":"Asset33","v":0},null,null,null,{"$f":"G43*G$7","v":0},0,0,0,0,0,0,0,0,0]
[null,null,{"$f":"Asset34","v":0},null,null,null,0,0,0,0,0,0,0,0,0,0]
[null,null,{"$f":"Asset35","v":0},null,null,null,0,0,0,0,0,0,0,0,0,0]
[null,null,{"$f":"Asset36","v":0},null,null,null,0,0,0,0,0,0,0,0,0,0]
[null,null,{"$f":"Asset37","v":0},null,null,null,0,0,0,0,0,0,0,0,0,0]
[null,null,{"$f":"Asset38","v":0},null,null,null,0,0,0,0,0,0,0,0,0,0]
[null,null,{"$f":"Asset39","v":0},null,null,null,0,0,0,0,0,0,0,0,0,0]
[null,null,{"$f":"Asset40","v":0},null,null,null,0,0,0,0,0,0,0,0,0,0]
[null,null,{"$f":"Asset41","v":0},null,null,null,0,0,0,0,0,0,0,0,0,0]
[null,null,{"$f":"Asset42","v":0},null,null,null,0,0,0,0,0,0,0,0,0,0]
[null,null,{"$f":"Asset43","v":0},null,null,null,0,0,0,0,0,0,0,0,0,0]
[null,null,{"$f":"Asset44","v":0},null,null,null,0,0,0,0,0,0,0,0,0,0]
[null,null,{"$f":"Asset45","v":0},null,null,null,0,0,0,0,0,0,0,0,0,0]
[null,null,{"$f":"Asset46","v":0},null,null,null,0,0,0,0,0,0,0,0,0,0]
[null,null,{"$f":"Asset47","v":0},null,null,null,0,0,0,0,0,0,0,0,0,0]
[null,null,{"$f":"Asset48","v":0},null,null,null,0,0,0,0,0,0,0,0,0,0]
[null,null,{"$f":"Asset49","v":0},null,null,null,{"$f":"G59*G$7","v":0},0,0,0,0,0,0,0,0,0]
[null,null,{"$f":"Asset50","v":"Equity raising costs"},null,null,null,0,0,0,0,0,0,0,0,0,0]
[]
[null,{"$f":"\"Asset Values ($m Real \"&F4&\")\"","v":"Asset Values ($m Real 2024-25)"}]
[]
[null,"Real Straight-line Depreciation",null,null,null,null,656.29475479768348,679.50868474916786,699.93631286230243,727.28798564521003,737.98894637537148,738.77404486105127,720.54531715335247,704.85397087633805,690.52937048460603,674.37545135580126,655.98805582242255,648.56304444351201,639.48885865429486,633.63406414926192,629.42243108318121,622.64052222628038,108.15208276519985,108.15208276519985,108.15208276519985,108.15208276519985,108.15208276519985,108.15208276519985,108.15208276519985,108.15208276519985,108.15208276519985,108.15208276519985,108.06035316569157,107.96521021907742,107.86687342251626,107.76648941622975,107.66220179453053,107.66220179453053,107.66220179453053,107.66220179453053,107.66220179453053,107.66220179453053,106.13907645737901,104.58208596128917,102.96956196449089,101.30460917567285,99.567006073859233,98.792448803661358,98.159787429989223,97.400795806976575,96.544745694031036,95.74177077271932,89.987316526685532,84.071323879130148,77.949205873211127,71.656158567823496,65.100169071540151,55.542423207737905,45.768974535322378,35.647398663213153,25.199410372970643]
[null,{"$f":"C128","v":"Overhead Sub-Transmission Lines"},null,"Initial Asset Base",null,null,55.506655259435689,55.506655259435689,55.506655259435689,55.506655259435689,55.506655259435689,55.506655259435689,55.506655259435689,55.506655259435689,55.506655259435689,55.506655259435689,55.506655259435689,55.506655259435689,55.506655259435689,55.506655259435689,55.506655259435689,55.506655259435689,0,0,0,0,0,0,0,0,0,0,0,0,0,0,0,0,0,0,0,0,0,0,0,0,0,0,0,0,0,0,0,0,0,0,0,0,0,0,0]
[null,null,null,"Capex in year",0]
[null,null,null,null,1,null,null,1.4459379148355589,1.4459379148355589,1.4459379148355589,1.4459379148355589,1.4459379148355589,1.4459379148355589,1.4459379148355589,1.4459379148355589,1.4459379148355589,1.4459379148355589,1.4459379148355589,1.4459379148355589,1.4459379148355589,1.4459379148355589,1.4459379148355589,1.4459379148355589,1.4459379148355589,1.4459379148355589,1.4459379148355589,1.4459379148355589,1.4459379148355589,1.4459379148355589,1.4459379148355589,1.4459379148355589,1.4459379148355589,1.4459379148355589,1.4459379148355589,1.4459379148355589,1.4459379148355589,1.4459379148355589,1.4459379148355589,1.4459379148355589,1.4459379148355589,1.4459379148355589,1.4459379148355589,1.4459379148355589,1.4459379148355589,1.4459379148355589,1.4459379148355589,1.4459379148355589,1.4459379148355589,1.4459379148355589,1.4459379148355589,1.4459379148355589,1.4459379148355589,1.4459379148355589,1.4459379148355589,1.4459379148355589,1.4459379148355589,1.4459379148355589,1.4459379148355589,1.4459379148355589,1.4459379148355589,1.4459379148355589]
[null,null,null,null,2,null,null,null,1.4856024090743321,1.4856024090743321,1.4856024090743321,1.4856024090743321,1.4856024090743321,1.4856024090743321,1.4856024090743321,1.4856024090743321,1.4856024090743321,1.4856024090743321,1.4856024090743321,1.4856024090743321,1.4856024090743321,1.4856024090743321,1.4856024090743321,1.4856024090743321,1.4856024090743321,1.4856024090743321,1.4856024090743321,1.4856024090743321,1.4856024090743321,1.4856024090743321,1.4856024090743321,1.4856024090743321,1.4856024090743321,1.4856024090743321,1.4856024090743321,1.4856024090743321,1.4856024090743321,1.4856024090743321,1.4856024090743321,1.4856024090743321,1.4856024090743321,1.4856024090743321,1.4856024090743321,1.4856024090743321,1.4856024090743321,1.4856024090743321,1.4856024090743321,1.4856024090743321,1.4856024090743321,1.4856024090743321,1.4856024090743321,1.4856024090743321,1.4856024090743321,1.4856024090743321,1.4856024090743321,1.4856024090743321,1.4856024090743321,1.4856024090743321,1.4856024090743321,1.4856024090743321,1.4856024090743321]
[null,null,null,null,3,null,null,null,null,1.5374976070597293,1.5374976070597293,1.5374976070597293,1.5374976070597293,1.5374976070597293,1.5374976070597293,1.5374976070597293,1.5374976070597293,1.5374976070597293,1.5374976070597293,1.5374976070597293,1.5374976070597293,1.5374976070597293,1.5374976070597293,1.5374976070597293,1.5374976070597293,1.5374976070597293,1.5374976070597293,1.5374976070597293,1.5374976070597293,1.5374976070597293,1.5374976070597293,1.5374976070597293,1.5374976070597293,1.5374976070597293,1.5374976070597293,1.5374976070597293,1.5374976070597293,1.5374976070597293,1.5374976070597293,1.5374976070597293,1.5374976070597293,1.5374976070597293,1.5374976070597293,1.5374976070597293,1.5374976070597293,1.5374976070597293,1.5374976070597293,1.5374976070597293,1.5374976070597293,1.5374976070597293,1.5374976070597293,1.5374976070597293,1.5374976070597293,1.5374976070597293,1.5374976070597293,1.5374976070597293,1.5374976070597293,1.5374976070597293,1.5374976070597293,1.5374976070597293,1.5374976070597293]
[null,null,null,null,4,null,null,null,null,null,1.5811956301161449,1.5811956301161449,1.5811956301161449,1.5811956301161449,1.5811956301161449,1.5811956301161449,1.5811956301161449,1.5811956301161449,1.5811956301161449,1.5811956301161449,1.5811956301161449,1.5811956301161449,1.5811956301161449,1.5811956301161449,1.5811956301161449,1.5811956301161449,1.5811956301161449,1.5811956301161449,1.5811956301161449,1.5811956301161449,1.5811956301161449,1.5811956301161449,1.5811956301161449,1.5811956301161449,1.5811956301161449,1.5811956301161449,1.5811956301161449,1.5811956301161449,1.5811956301161449,1.5811956301161449,1.5811956301161449,1.5811956301161449,1.5811956301161449,1.5811956301161449,1.5811956301161449,1.5811956301161449,1.5811956301161449,1.5811956301161449,1.5811956301161449,1.5811956301161449,1.5811956301161449,1.5811956301161449,1.5811956301161449,1.5811956301161449,1.5811956301161449,1.5811956301161449,1.5811956301161449,1.5811956301161449,1.5811956301161449,1.5811956301161449,1.5811956301161449]
[null,null,null,null,5,null,null,null,null,null,null,1.6475837085598513,1.6475837085598513,1.6475837085598513,1.6475837085598513,1.6475837085598513,1.6475837085598513,1.6475837085598513,1.6475837085598513,1.6475837085598513,1.6475837085598513,1.6475837085598513,1.6475837085598513,1.6475837085598513,1.6475837085598513,1.6475837085598513,1.6475837085598513,1.6475837085598513,1.6475837085598513,1.6475837085598513,1.6475837085598513,1.6475837085598513,1.6475837085598513,1.6475837085598513,1.6475837085598513,1.6475837085598513,1.6475837085598513,1.6475837085598513,1.6475837085598513,1.6475837085598513,1.6475837085598513,1.6475837085598513,1.6475837085598513,1.6475837085598513,1.6475837085598513,1.6475837085598513,1.6475837085598513,1.6475837085598513,1.6475837085598513,1.6475837085598513,1.6475837085598513,1.6475837085598513,1.6475837085598513,1.6475837085598513,1.6475837085598513,1.6475837085598513,1.6475837085598513,1.6475837085598513,1.6475837085598513,1.6475837085598513,1.6475837085598513]
[null,null,null,null,6,null,null,null,null,null,null,null,0,0,0,0,0,0,0,0,0,0,0,0,0,0,0,0,0,0,0,0,0,0,0,0,0,0,0,0,0,0,0,0,0,0,0,0,0,0,0,0,0,0,0,0,0,0,0,0,0]
[null,null,null,null,7,null,null,null,null,null,null,null,null,0,0,0,0,0,0,0,0,0,0,0,0,0,0,0,0,0,0,0,0,0,0,0,0,0,0,0,0,0,0,0,0,0,0,0,0,0,0,0,0,0,0,0,0,0,0,0,0]
[null,null,null,null,8,null,null,null,null,null,null,null,null,null,0,0,0,0,0,0,0,0,0,0,0,0,0,0,0,0,0,0,0,0,0,0,0,0,0,0,0,0,0,0,0,0,0,0,0,0,0,0,0,0,0,0,0,0,0,0,0]
[null,null,null,null,9,null,null,null,null,null,null,null,null,null,null,0,0,0,0,0,0,0,0,0,0,0,0,0,0,0,0,0,0,0,0,0,0,0,0,0,0,0,0,0,0,0,0,0,0,0,0,0,0,0,0,0,0,0,0,0,0]
[null,null,null,null,10,null,null,null,null,null,null,null,null,null,null,null,0,0,0,0,0,0,0,0,0,0,0,0,0,0,0,0,0,0,0,0,0,0,0,0,0,0,0,0,0,0,0,0,0,0,0,0,0,0,0,0,0,0,0,0,0]
[null,null,{"$f":"Asset1","v":"Overhead Sub-Transmission Lines"},null,null,null,55.506655259435689,56.95259317427125,58.438195583345582,59.975693190405309,61.556888820521451,63.204472529081301,63.204472529081301,63.204472529081301,63.204472529081301,63.204472529081301,63.204472529081301,63.204472529081301,63.204472529081301,63.204472529081301,63.204472529081301,63.204472529081301,7.6978172696456166,7.6978172696456166,7.6978172696456166,7.6978172696456166,7.6978172696456166,7.6978172696456166,7.6978172696456166,7.6978172696456166,7.6978172696456166,7.6978172696456166,7.6978172696456166,7.6978172696456166,7.6978172696456166,7.6978172696456166,7.6978172696456166,7.6978172696456166,7.6978172696456166,7.6978172696456166,7.6978172696456166,7.6978172696456166,7.6978172696456166,7.6978172696456166,7.6978172696456166,7.6978172696456166,7.6978172696456166,7.6978172696456166,7.6978172696456166,7.6978172696456166,7.6978172696456166,7.6978172696456166,7.6978172696456166,7.6978172696456166,7.6978172696456166,7.6978172696456166,7.6978172696456166,7.6978172696456166,7.6978172696456166,7.6978172696456166,7.6978172696456166]
[null,{"$f":"C141","v":"Underground Sub-Transmission Cables"},null,"Initial Asset Base",null,null,2.6920337654670918,2.6920337654670918,2.6920337654670918,2.6920337654670918,2.6920337654670918,2.6920337654670918,2.6920337654670918,2.6920337654670918,2.6920337654670918,2.6920337654670918,2.6920337654670918,2.6920337654670918,2.6920337654670918,2.6920337654670918,2.6920337654670918,2.6920337654670918,0,0,0,0,0,0,0,0,0,0,0,0,0,0,0,0,0,0,0,0,0,0,0,0,0,0,0,0,0,0,0,0,0,0,0,0,0,0,0]
[null,null,null,"Capex in year",0]
[null,null,null,null,1,null,null,0.10710680621639299,0.10710680621639299,0.10710680621639299,0.10710680621639299,0.10710680621639299,0.10710680621639299,0.10710680621639299,0.10710680621639299,0.10710680621639299,0.10710680621639299,0.10710680621639299,0.10710680621639299,0.10710680621639299,0.10710680621639299,0.10710680621639299,0.10710680621639299,0.10710680621639299,0.10710680621639299,0.10710680621639299,0.10710680621639299,0.10710680621639299,0.10710680621639299,0.10710680621639299,0.10710680621639299,0.10710680621639299,0.10710680621639299,0.10710680621639299,0.10710680621639299,0.10710680621639299,0.10710680621639299,0.10710680621639299,0.10710680621639299,0.10710680621639299,0.10710680621639299,0.10710680621639299,0.10710680621639299,0.10710680621639299,0.10710680621639299,0.10710680621639299,0.10710680621639299,0.10710680621639299,0.10710680621639299,0.10710680621639299,0.10710680621639299,0.10710680621639299,-1.7763568394002505E-15,0,0,0,0,0,0,0,0]
[null,null,null,null,2,null,null,null,0.1109888046738698,0.1109888046738698,0.1109888046738698,0.1109888046738698,0.1109888046738698,0.1109888046738698,0.1109888046738698,0.1109888046738698,0.1109888046738698,0.1109888046738698,0.1109888046738698,0.1109888046738698,0.1109888046738698,0.1109888046738698,0.1109888046738698,0.1109888046738698,0.1109888046738698,0.1109888046738698,0.1109888046738698,0.1109888046738698,0.1109888046738698,0.1109888046738698,0.1109888046738698,0.1109888046738698,0.1109888046738698,0.1109888046738698,0.1109888046738698,0.1109888046738698,0.1109888046738698,0.1109888046738698,0.1109888046738698,0.1109888046738698,0.1109888046738698,0.1109888046738698,0.1109888046738698,0.1109888046738698,0.1109888046738698,0.1109888046738698,0.1109888046738698,0.1109888046738698,0.1109888046738698,0.1109888046738698,0.1109888046738698,0.1109888046738698,0.1109888046738698,4.4408920985006262E-15,0,0,0,0,0,0,0]
[null,null,null,null,3,null,null,null,null,0.11472941323733171,0.11472941323733171,0.11472941323733171,0.11472941323733171,0.11472941323733171,0.11472941323733171,0.11472941323733171,0.11472941323733171,0.11472941323733171,0.11472941323733171,0.11472941323733171,0.11472941323733171,0.11472941323733171,0.11472941323733171,0.11472941323733171,0.11472941323733171,0.11472941323733171,0.11472941323733171,0.11472941323733171,0.11472941323733171,0.11472941323733171,0.11472941323733171,0.11472941323733171,0.11472941323733171,0.11472941323733171,0.11472941323733171,0.11472941323733171,0.11472941323733171,0.11472941323733171,0.11472941323733171,0.11472941323733171,0.11472941323733171,0.11472941323733171,0.11472941323733171,0.11472941323733171,0.11472941323733171,0.11472941323733171,0.11472941323733171,0.11472941323733171,0.11472941323733171,0.11472941323733171,0.11472941323733171,0.11472941323733171,0.11472941323733171,0.11472941323733171,0,0,0,0,0,0,0]
[null,null,null,null,4,null,null,null,null,null,0.11720349527985524,0.11720349527985524,0.11720349527985524,0.11720349527985524,0.11720349527985524,0.11720349527985524,0.11720349527985524,0.11720349527985524,0.11720349527985524,0.11720349527985524,0.11720349527985524,0.11720349527985524,0.11720349527985524,0.11720349527985524,0.11720349527985524,0.11720349527985524,0.11720349527985524,0.11720349527985524,0.11720349527985524,0.11720349527985524,0.11720349527985524,0.11720349527985524,0.11720349527985524,0.11720349527985524,0.11720349527985524,0.11720349527985524,0.11720349527985524,0.11720349527985524,0.11720349527985524,0.11720349527985524,0.11720349527985524,0.11720349527985524,0.11720349527985524,0.11720349527985524,0.11720349527985524,0.11720349527985524,0.11720349527985524,0.11720349527985524,0.11720349527985524,0.11720349527985524,0.11720349527985524,0.11720349527985524,0.11720349527985524,0.11720349527985524,0.11720349527985524,-8.8817841970012523E-16,0,0,0,0,0]
[null,null,null,null,5,null,null,null,null,null,null,0.1217970529629786,0.1217970529629786,0.1217970529629786,0.1217970529629786,0.1217970529629786,0.1217970529629786,0.1217970529629786,0.1217970529629786,0.1217970529629786,0.1217970529629786,0.1217970529629786,0.1217970529629786,0.1217970529629786,0.1217970529629786,0.1217970529629786,0.1217970529629786,0.1217970529629786,0.1217970529629786,0.1217970529629786,0.1217970529629786,0.1217970529629786,0.1217970529629786,0.1217970529629786,0.1217970529629786,0.1217970529629786,0.1217970529629786,0.1217970529629786,0.1217970529629786,0.1217970529629786,0.1217970529629786,0.1217970529629786,0.1217970529629786,0.1217970529629786,0.1217970529629786,0.1217970529629786,0.1217970529629786,0.1217970529629786,0.1217970529629786,0.1217970529629786,0.1217970529629786,0.1217970529629786,0.1217970529629786,0.1217970529629786,0.1217970529629786,0.1217970529629786,-5.3290705182007514E-15,0,0,0,0]
[null,null,null,null,6,null,null,null,null,null,null,null,0,0,0,0,0,0,0,0,0,0,0,0,0,0,0,0,0,0,0,0,0,0,0,0,0,0,0,0,0,0,0,0,0,0,0,0,0,0,0,0,0,0,0,0,0,0,0,0,0]
[null,null,null,null,7,null,null,null,null,null,null,null,null,0,0,0,0,0,0,0,0,0,0,0,0,0,0,0,0,0,0,0,0,0,0,0,0,0,0,0,0,0,0,0,0,0,0,0,0,0,0,0,0,0,0,0,0,0,0,0,0]
[null,null,null,null,8,null,null,null,null,null,null,null,null,null,0,0,0,0,0,0,0,0,0,0,0,0,0,0,0,0,0,0,0,0,0,0,0,0,0,0,0,0,0,0,0,0,0,0,0,0,0,0,0,0,0,0,0,0,0,0,0]
[null,null,null,null,9,null,null,null,null,null,null,null,null,null,null,0,0,0,0,0,0,0,0,0,0,0,0,0,0,0,0,0,0,0,0,0,0,0,0,0,0,0,0,0,0,0,0,0,0,0,0,0,0,0,0,0,0,0,0,0,0]
[null,null,null,null,10,null,null,null,null,null,null,null,null,null,null,null,0,0,0,0,0,0,0,0,0,0,0,0,0,0,0,0,0,0,0,0,0,0,0,0,0,0,0,0,0,0,0,0,0,0,0,0,0,0,0,0,0,0,0,0,0]
[null,null,{"$f":"Asset2","v":"Underground Sub-Transmission Cables"},null,null,null,2.6920337654670918,2.799140571683485,2.9101293763573546,3.0248587895946861,3.1420622848745414,3.2638593378375198,3.2638593378375198,3.2638593378375198,3.2638593378375198,3.2638593378375198,3.2638593378375198,3.2638593378375198,3.2638593378375198,3.2638593378375198,3.2638593378375198,3.2638593378375198,0.57182557237042841,0.57182557237042841,0.57182557237042841,0.57182557237042841,0.57182557237042841,0.57182557237042841,0.57182557237042841,0.57182557237042841,0.57182557237042841,0.57182557237042841,0.57182557237042841,0.57182557237042841,0.57182557237042841,0.57182557237042841,0.57182557237042841,0.57182557237042841,0.57182557237042841,0.57182557237042841,0.57182557237042841,0.57182557237042841,0.57182557237042841,0.57182557237042841,0.57182557237042841,0.57182557237042841,0.57182557237042841,0.57182557237042841,0.57182557237042841,0.57182557237042841,0.57182557237042841,0.57182557237042841,0.46471876615403357,0.35372996148017,0.23900054824283384,0.12179705296297771,-5.3290705182007514E-15,0,0,0,0]
[null,{"$f":"C154","v":"Overhead Distribution Lines"},null,"Initial Asset Base",null,null,187.37607635867266,187.37607635867266,187.37607635867266,187.37607635867266,187.37607635867266,187.37607635867266,187.37607635867266,187.37607635867266,187.37607635867266,187.37607635867266,187.37607635867266,187.37607635867266,187.37607635867266,187.37607635867266,187.37607635867266,187.37607635867266,0,0,0,0,0,0,0,0,0,0,0,0,0,0,0,0,0,0,0,0,0,0,0,0,0,0,0,0,0,0,0,0,0,0,0,0,0,0,0]
[null,null,null,"Capex in year",0]
[null,null,null,null,1,null,null,9.2484922271712655,9.2484922271712655,9.2484922271712655,9.2484922271712655,9.2484922271712655,9.2484922271712655,9.2484922271712655,9.2484922271712655,9.2484922271712655,9.2484922271712655,9.2484922271712655,9.2484922271712655,9.2484922271712655,9.2484922271712655,9.2484922271712655,9.2484922271712655,9.2484922271712655,9.2484922271712655,9.2484922271712655,9.2484922271712655,9.2484922271712655,9.2484922271712655,9.2484922271712655,9.2484922271712655,9.2484922271712655,9.2484922271712655,9.2484922271712655,9.2484922271712655,9.2484922271712655,9.2484922271712655,9.2484922271712655,9.2484922271712655,9.2484922271712655,9.2484922271712655,9.2484922271712655,9.2484922271712655,9.2484922271712655,9.2484922271712655,9.2484922271712655,9.2484922271712655,9.2484922271712655,9.2484922271712655,9.2484922271712655,9.2484922271712655,9.2484922271712655,9.2484922271712655,9.2484922271712655,9.2484922271712655,9.2484922271712655,9.2484922271712655,3.979039320256561E-13,0,0,0]
[null,null,null,null,2,null,null,null,9.4552775170295735,9.4552775170295735,9.4552775170295735,9.4552775170295735,9.4552775170295735,9.4552775170295735,9.4552775170295735,9.4552775170295735,9.4552775170295735,9.4552775170295735,9.4552775170295735,9.4552775170295735,9.4552775170295735,9.4552775170295735,9.4552775170295735,9.4552775170295735,9.4552775170295735,9.4552775170295735,9.4552775170295735,9.4552775170295735,9.4552775170295735,9.4552775170295735,9.4552775170295735,9.4552775170295735,9.4552775170295735,9.4552775170295735,9.4552775170295735,9.4552775170295735,9.4552775170295735,9.4552775170295735,9.4552775170295735,9.4552775170295735,9.4552775170295735,9.4552775170295735,9.4552775170295735,9.4552775170295735,9.4552775170295735,9.4552775170295735,9.4552775170295735,9.4552775170295735,9.4552775170295735,9.4552775170295735,9.4552775170295735,9.4552775170295735,9.4552775170295735,9.4552775170295735,9.4552775170295735,9.4552775170295735,9.4552775170295735,9.4552775170295735,0,0,0]
[null,null,null,null,3,null,null,null,null,9.7923531043346745,9.7923531043346745,9.7923531043346745,9.7923531043346745,9.7923531043346745,9.7923531043346745,9.7923531043346745,9.7923531043346745,9.7923531043346745,9.7923531043346745,9.7923531043346745,9.7923531043346745,9.7923531043346745,9.7923531043346745,9.7923531043346745,9.7923531043346745,9.7923531043346745,9.7923531043346745,9.7923531043346745,9.7923531043346745,9.7923531043346745,9.7923531043346745,9.7923531043346745,9.7923531043346745,9.7923531043346745,9.7923531043346745,9.7923531043346745,9.7923531043346745,9.7923531043346745,9.7923531043346745,9.7923531043346745,9.7923531043346745,9.7923531043346745,9.7923531043346745,9.7923531043346745,9.7923531043346745,9.7923531043346745,9.7923531043346745,9.7923531043346745,9.7923531043346745,9.7923531043346745,9.7923531043346745,9.7923531043346745,9.7923531043346745,9.7923531043346745,9.7923531043346745,9.7923531043346745,9.7923531043346745,9.7923531043346745,9.7923531043346745,2.8421709430404007E-13,0]
[null,null,null,null,4,null,null,null,null,null,10.109770384835914,10.109770384835914,10.109770384835914,10.109770384835914,10.109770384835914,10.109770384835914,10.109770384835914,10.109770384835914,10.109770384835914,10.109770384835914,10.109770384835914,10.109770384835914,10.109770384835914,10.109770384835914,10.109770384835914,10.109770384835914,10.109770384835914,10.109770384835914,10.109770384835914,10.109770384835914,10.109770384835914,10.109770384835914,10.109770384835914,10.109770384835914,10.109770384835914,10.109770384835914,10.109770384835914,10.109770384835914,10.109770384835914,10.109770384835914,10.109770384835914,10.109770384835914,10.109770384835914,10.109770384835914,10.109770384835914,10.109770384835914,10.109770384835914,10.109770384835914,10.109770384835914,10.109770384835914,10.109770384835914,10.109770384835914,10.109770384835914,10.109770384835914,10.109770384835914,10.109770384835914,10.109770384835914,10.109770384835914,10.109770384835914,10.109770384835914,-6.8212102632969618E-13]
[null,null,null,null,5,null,null,null,null,null,null,10.550510304820801,10.550510304820801,10.550510304820801,10.550510304820801,10.550510304820801,10.550510304820801,10.550510304820801,10.550510304820801,10.550510304820801,10.550510304820801,10.550510304820801,10.550510304820801,10.550510304820801,10.550510304820801,10.550510304820801,10.550510304820801,10.550510304820801,10.550510304820801,10.550510304820801,10.550510304820801,10.550510304820801,10.550510304820801,10.550510304820801,10.550510304820801,10.550510304820801,10.550510304820801,10.550510304820801,10.550510304820801,10.550510304820801,10.550510304820801,10.550510304820801,10.550510304820801,10.550510304820801,10.550510304820801,10.550510304820801,10.550510304820801,10.550510304820801,10.550510304820801,10.550510304820801,10.550510304820801,10.550510304820801,10.550510304820801,10.550510304820801,10.550510304820801,10.550510304820801,10.550510304820801,10.550510304820801,10.550510304820801,10.550510304820801,10.550510304820801]
[null,null,null,null,6,null,null,null,null,null,null,null,0,0,0,0,0,0,0,0,0,0,0,0,0,0,0,0,0,0,0,0,0,0,0,0,0,0,0,0,0,0,0,0,0,0,0,0,0,0,0,0,0,0,0,0,0,0,0,0,0]
[null,null,null,null,7,null,null,null,null,null,null,null,null,0,0,0,0,0,0,0,0,0,0,0,0,0,0,0,0,0,0,0,0,0,0,0,0,0,0,0,0,0,0,0,0,0,0,0,0,0,0,0,0,0,0,0,0,0,0,0,0]
[null,null,null,null,8,null,null,null,null,null,null,null,null,null,0,0,0,0,0,0,0,0,0,0,0,0,0,0,0,0,0,0,0,0,0,0,0,0,0,0,0,0,0,0,0,0,0,0,0,0,0,0,0,0,0,0,0,0,0,0,0]
[null,null,null,null,9,null,null,null,null,null,null,null,null,null,null,0,0,0,0,0,0,0,0,0,0,0,0,0,0,0,0,0,0,0,0,0,0,0,0,0,0,0,0,0,0,0,0,0,0,0,0,0,0,0,0,0,0,0,0,0,0]
[null,null,null,null,10,null,null,null,null,null,null,null,null,null,null,null,0,0,0,0,0,0,0,0,0,0,0,0,0,0,0,0,0,0,0,0,0,0,0,0,0,0,0,0,0,0,0,0,0,0,0,0,0,0,0,0,0,0,0,0,0]
[null,null,{"$f":"Asset3","v":"Overhead Distribution Lines"},null,null,null,187.37607635867266,196.62456858584392,206.07984610287349,215.87219920720815,225.98196959204407,236.53247989686486,236.53247989686486,236.53247989686486,236.53247989686486,236.53247989686486,236.53247989686486,236.53247989686486,236.53247989686486,236.53247989686486,236.53247989686486,236.53247989686486,49.156403538192222,49.156403538192222,49.156403538192222,49.156403538192222,49.156403538192222,49.156403538192222,49.156403538192222,49.156403538192222,49.156403538192222,49.156403538192222,49.156403538192222,49.156403538192222,49.156403538192222,49.156403538192222,49.156403538192222,49.156403538192222,49.156403538192222,49.156403538192222,49.156403538192222,49.156403538192222,49.156403538192222,49.156403538192222,49.156403538192222,49.156403538192222,49.156403538192222,49.156403538192222,49.156403538192222,49.156403538192222,49.156403538192222,49.156403538192222,49.156403538192222,49.156403538192222,49.156403538192222,49.156403538192222,49.156403538192222,39.907911311021365,30.452633793991389,20.660280689657,10.550510304820119]
[null,{"$f":"C167","v":"Underground Distribution Cables"},null,"Initial Asset Base",null,null,28.257754652362006,28.257754652362006,28.257754652362006,28.257754652362006,28.257754652362006,28.257754652362006,28.257754652362006,28.257754652362006,28.257754652362006,28.257754652362006,28.257754652362006,28.257754652362006,28.257754652362006,28.257754652362006,28.257754652362006,28.257754652362006,0,0,0,0,0,0,0,0,0,0,0,0,0,0,0,0,0,0,0,0,0,0,0,0,0,0,0,0,0,0,0,0,0,0,0,0,0,0,0]
[null,null,null,"Capex in year",0]
[null,null,null,null,1,null,null,0.47469649168022265,0.47469649168022265,0.47469649168022265,0.47469649168022265,0.47469649168022265,0.47469649168022265,0.47469649168022265,0.47469649168022265,0.47469649168022265,0.47469649168022265,0.47469649168022265,0.47469649168022265,0.47469649168022265,0.47469649168022265,0.47469649168022265,0.47469649168022265,0.47469649168022265,0.47469649168022265,0.47469649168022265,0.47469649168022265,0.47469649168022265,0.47469649168022265,0.47469649168022265,0.47469649168022265,0.47469649168022265,0.47469649168022265,0.47469649168022265,0.47469649168022265,0.47469649168022265,0.47469649168022265,0.47469649168022265,0.47469649168022265,0.47469649168022265,0.47469649168022265,0.47469649168022265,0.47469649168022265,0.47469649168022265,0.47469649168022265,0.47469649168022265,0.47469649168022265,0.47469649168022265,0.47469649168022265,0.47469649168022265,0.47469649168022265,0.47469649168022265,0.47469649168022265,0.47469649168022265,0.47469649168022265,0.47469649168022265,0.47469649168022265,0.47469649168022265,0.47469649168022265,0.47469649168022265,0.47469649168022265]
[null,null,null,null,2,null,null,null,0.49018877592388732,0.49018877592388732,0.49018877592388732,0.49018877592388732,0.49018877592388732,0.49018877592388732,0.49018877592388732,0.49018877592388732,0.49018877592388732,0.49018877592388732,0.49018877592388732,0.49018877592388732,0.49018877592388732,0.49018877592388732,0.49018877592388732,0.49018877592388732,0.49018877592388732,0.49018877592388732,0.49018877592388732,0.49018877592388732,0.49018877592388732,0.49018877592388732,0.49018877592388732,0.49018877592388732,0.49018877592388732,0.49018877592388732,0.49018877592388732,0.49018877592388732,0.49018877592388732,0.49018877592388732,0.49018877592388732,0.49018877592388732,0.49018877592388732,0.49018877592388732,0.49018877592388732,0.49018877592388732,0.49018877592388732,0.49018877592388732,0.49018877592388732,0.49018877592388732,0.49018877592388732,0.49018877592388732,0.49018877592388732,0.49018877592388732,0.49018877592388732,0.49018877592388732,0.49018877592388732,0.49018877592388732,0.49018877592388732,0.49018877592388732,0.49018877592388732,0.49018877592388732,0.49018877592388732]
[null,null,null,null,3,null,null,null,null,0.50695490995548786,0.50695490995548786,0.50695490995548786,0.50695490995548786,0.50695490995548786,0.50695490995548786,0.50695490995548786,0.50695490995548786,0.50695490995548786,0.50695490995548786,0.50695490995548786,0.50695490995548786,0.50695490995548786,0.50695490995548786,0.50695490995548786,0.50695490995548786,0.50695490995548786,0.50695490995548786,0.50695490995548786,0.50695490995548786,0.50695490995548786,0.50695490995548786,0.50695490995548786,0.50695490995548786,0.50695490995548786,0.50695490995548786,0.50695490995548786,0.50695490995548786,0.50695490995548786,0.50695490995548786,0.50695490995548786,0.50695490995548786,0.50695490995548786,0.50695490995548786,0.50695490995548786,0.50695490995548786,0.50695490995548786,0.50695490995548786,0.50695490995548786,0.50695490995548786,0.50695490995548786,0.50695490995548786,0.50695490995548786,0.50695490995548786,0.50695490995548786,0.50695490995548786,0.50695490995548786,0.50695490995548786,0.50695490995548786,0.50695490995548786,0.50695490995548786,0.50695490995548786]
[null,null,null,null,4,null,null,null,null,null,0.51930417911821802,0.51930417911821802,0.51930417911821802,0.51930417911821802,0.51930417911821802,0.51930417911821802,0.51930417911821802,0.51930417911821802,0.51930417911821802,0.51930417911821802,0.51930417911821802,0.51930417911821802,0.51930417911821802,0.51930417911821802,0.51930417911821802,0.51930417911821802,0.51930417911821802,0.51930417911821802,0.51930417911821802,0.51930417911821802,0.51930417911821802,0.51930417911821802,0.51930417911821802,0.51930417911821802,0.51930417911821802,0.51930417911821802,0.51930417911821802,0.51930417911821802,0.51930417911821802,0.51930417911821802,0.51930417911821802,0.51930417911821802,0.51930417911821802,0.51930417911821802,0.51930417911821802,0.51930417911821802,0.51930417911821802,0.51930417911821802,0.51930417911821802,0.51930417911821802,0.51930417911821802,0.51930417911821802,0.51930417911821802,0.51930417911821802,0.51930417911821802,0.51930417911821802,0.51930417911821802,0.51930417911821802,0.51930417911821802,0.51930417911821802,0.51930417911821802]
[null,null,null,null,5,null,null,null,null,null,null,0.54025086371940589,0.54025086371940589,0.54025086371940589,0.54025086371940589,0.54025086371940589,0.54025086371940589,0.54025086371940589,0.54025086371940589,0.54025086371940589,0.54025086371940589,0.54025086371940589,0.54025086371940589,0.54025086371940589,0.54025086371940589,0.54025086371940589,0.54025086371940589,0.54025086371940589,0.54025086371940589,0.54025086371940589,0.54025086371940589,0.54025086371940589,0.54025086371940589,0.54025086371940589,0.54025086371940589,0.54025086371940589,0.54025086371940589,0.54025086371940589,0.54025086371940589,0.54025086371940589,0.54025086371940589,0.54025086371940589,0.54025086371940589,0.54025086371940589,0.54025086371940589,0.54025086371940589,0.54025086371940589,0.54025086371940589,0.54025086371940589,0.54025086371940589,0.54025086371940589,0.54025086371940589,0.54025086371940589,0.54025086371940589,0.54025086371940589,0.54025086371940589,0.54025086371940589,0.54025086371940589,0.54025086371940589,0.54025086371940589,0.54025086371940589]
[null,null,null,null,6,null,null,null,null,null,null,null,0,0,0,0,0,0,0,0,0,0,0,0,0,0,0,0,0,0,0,0,0,0,0,0,0,0,0,0,0,0,0,0,0,0,0,0,0,0,0,0,0,0,0,0,0,0,0,0,0]
[null,null,null,null,7,null,null,null,null,null,null,null,null,0,0,0,0,0,0,0,0,0,0,0,0,0,0,0,0,0,0,0,0,0,0,0,0,0,0,0,0,0,0,0,0,0,0,0,0,0,0,0,0,0,0,0,0,0,0,0,0]
[null,null,null,null,8,null,null,null,null,null,null,null,null,null,0,0,0,0,0,0,0,0,0,0,0,0,0,0,0,0,0,0,0,0,0,0,0,0,0,0,0,0,0,0,0,0,0,0,0,0,0,0,0,0,0,0,0,0,0,0,0]
[null,null,null,null,9,null,null,null,null,null,null,null,null,null,null,0,0,0,0,0,0,0,0,0,0,0,0,0,0,0,0,0,0,0,0,0,0,0,0,0,0,0,0,0,0,0,0,0,0,0,0,0,0,0,0,0,0,0,0,0,0]
[null,null,null,null,10,null,null,null,null,null,null,null,null,null,null,null,0,0,0,0,0,0,0,0,0,0,0,0,0,0,0,0,0,0,0,0,0,0,0,0,0,0,0,0,0,0,0,0,0,0,0,0,0,0,0,0,0,0,0,0,0]
[null,null,{"$f":"Asset4","v":"Underground Distribution Cables"},null,null,null,28.257754652362006,28.73245114404223,29.222639919966117,29.729594829921606,30.248899009039825,30.789149872759232,30.789149872759232,30.789149872759232,30.789149872759232,30.789149872759232,30.789149872759232,30.789149872759232,30.789149872759232,30.789149872759232,30.789149872759232,30.789149872759232,2.5313952203972221,2.5313952203972221,2.5313952203972221,2.5313952203972221,2.5313952203972221,2.5313952203972221,2.5313952203972221,2.5313952203972221,2.5313952203972221,2.5313952203972221,2.5313952203972221,2.5313952203972221,2.5313952203972221,2.5313952203972221,2.5313952203972221,2.5313952203972221,2.5313952203972221,2.5313952203972221,2.5313952203972221,2.5313952203972221,2.5313952203972221,2.5313952203972221,2.5313952203972221,2.5313952203972221,2.5313952203972221,2.5313952203972221,2.5313952203972221,2.5313952203972221,2.5313952203972221,2.5313952203972221,2.5313952203972221,2.5313952203972221,2.5313952203972221,2.5313952203972221,2.5313952203972221,2.5313952203972221,2.5313952203972221,2.5313952203972221,2.5313952203972221]
[null,{"$f":"C180","v":"Distribution Equipment"},null,"Initial Asset Base",null,null,2.0589848171820435,2.0589848171820435,2.0589848171820435,2.0589848171820435,2.0589848171820435,2.0589848171820435,2.0589848171820435,2.0589848171820435,2.0589848171820435,2.0589848171820435,2.0589848171820435,2.0589848171820435,2.0589848171820435,2.0589848171820435,2.0589848171820435,2.0589848171820435,0,0,0,0,0,0,0,0,0,0,0,0,0,0,0,0,0,0,0,0,0,0,0,0,0,0,0,0,0,0,0,0,0,0,0,0,0,0,0]
[null,null,null,"Capex in year",0]
[null,null,null,null,1,null,null,9.5506336676399337E-2,9.5506336676399337E-2,9.5506336676399337E-2,9.5506336676399337E-2,9.5506336676399337E-2,9.5506336676399337E-2,9.5506336676399337E-2,9.5506336676399337E-2,9.5506336676399337E-2,9.5506336676399337E-2,9.5506336676399337E-2,9.5506336676399337E-2,9.5506336676399337E-2,9.5506336676399337E-2,9.5506336676399337E-2,9.5506336676399337E-2,9.5506336676399337E-2,9.5506336676399337E-2,9.5506336676399337E-2,9.5506336676399337E-2,9.5506336676399337E-2,9.5506336676399337E-2,9.5506336676399337E-2,9.5506336676399337E-2,9.5506336676399337E-2,9.5506336676399337E-2,9.5506336676399337E-2,9.5506336676399337E-2,9.5506336676399337E-2,9.5506336676399337E-2,9.5506336676399337E-2,9.5506336676399337E-2,9.5506336676399337E-2,9.5506336676399337E-2,9.5506336676399337E-2,-1.7763568394002505E-15,0,0,0,0,0,0,0,0,0,0,0,0,0,0,0,0,0,0]
[null,null,null,null,2,null,null,null,9.9022181276618687E-2,9.9022181276618687E-2,9.9022181276618687E-2,9.9022181276618687E-2,9.9022181276618687E-2,9.9022181276618687E-2,9.9022181276618687E-2,9.9022181276618687E-2,9.9022181276618687E-2,9.9022181276618687E-2,9.9022181276618687E-2,9.9022181276618687E-2,9.9022181276618687E-2,9.9022181276618687E-2,9.9022181276618687E-2,9.9022181276618687E-2,9.9022181276618687E-2,9.9022181276618687E-2,9.9022181276618687E-2,9.9022181276618687E-2,9.9022181276618687E-2,9.9022181276618687E-2,9.9022181276618687E-2,9.9022181276618687E-2,9.9022181276618687E-2,9.9022181276618687E-2,9.9022181276618687E-2,9.9022181276618687E-2,9.9022181276618687E-2,9.9022181276618687E-2,9.9022181276618687E-2,9.9022181276618687E-2,9.9022181276618687E-2,9.9022181276618687E-2,9.9022181276618687E-2,-1.7763568394002505E-15,0,0,0,0,0,0,0,0,0,0,0,0,0,0,0,0,0]
[null,null,null,null,3,null,null,null,null,0.10235170071645877,0.10235170071645877,0.10235170071645877,0.10235170071645877,0.10235170071645877,0.10235170071645877,0.10235170071645877,0.10235170071645877,0.10235170071645877,0.10235170071645877,0.10235170071645877,0.10235170071645877,0.10235170071645877,0.10235170071645877,0.10235170071645877,0.10235170071645877,0.10235170071645877,0.10235170071645877,0.10235170071645877,0.10235170071645877,0.10235170071645877,0.10235170071645877,0.10235170071645877,0.10235170071645877,0.10235170071645877,0.10235170071645877,0.10235170071645877,0.10235170071645877,0.10235170071645877,0.10235170071645877,0.10235170071645877,0.10235170071645877,0.10235170071645877,0.10235170071645877,0.10235170071645877,1.3322676295501878E-15,0,0,0,0,0,0,0,0,0,0,0,0,0,0,0,0]
[null,null,null,null,4,null,null,null,null,null,0.10451394089047007,0.10451394089047007,0.10451394089047007,0.10451394089047007,0.10451394089047007,0.10451394089047007,0.10451394089047007,0.10451394089047007,0.10451394089047007,0.10451394089047007,0.10451394089047007,0.10451394089047007,0.10451394089047007,0.10451394089047007,0.10451394089047007,0.10451394089047007,0.10451394089047007,0.10451394089047007,0.10451394089047007,0.10451394089047007,0.10451394089047007,0.10451394089047007,0.10451394089047007,0.10451394089047007,0.10451394089047007,0.10451394089047007,0.10451394089047007,0.10451394089047007,0.10451394089047007,0.10451394089047007,0.10451394089047007,0.10451394089047007,0.10451394089047007,0.10451394089047007,0.10451394089047007,-3.1086244689504383E-15,0,0,0,0,0,0,0,0,0,0,0,0,0,0,0]
[null,null,null,null,5,null,null,null,null,null,null,0.10859133886346858,0.10859133886346858,0.10859133886346858,0.10859133886346858,0.10859133886346858,0.10859133886346858,0.10859133886346858,0.10859133886346858,0.10859133886346858,0.10859133886346858,0.10859133886346858,0.10859133886346858,0.10859133886346858,0.10859133886346858,0.10859133886346858,0.10859133886346858,0.10859133886346858,0.10859133886346858,0.10859133886346858,0.10859133886346858,0.10859133886346858,0.10859133886346858,0.10859133886346858,0.10859133886346858,0.10859133886346858,0.10859133886346858,0.10859133886346858,0.10859133886346858,0.10859133886346858,0.10859133886346858,0.10859133886346858,0.10859133886346858,0.10859133886346858,0.10859133886346858,0.10859133886346858,2.2204460492503131E-15,0,0,0,0,0,0,0,0,0,0,0,0,0,0]
[null,null,null,null,6,null,null,null,null,null,null,null,0,0,0,0,0,0,0,0,0,0,0,0,0,0,0,0,0,0,0,0,0,0,0,0,0,0,0,0,0,0,0,0,0,0,0,0,0,0,0,0,0,0,0,0,0,0,0,0,0]
[null,null,null,null,7,null,null,null,null,null,null,null,null,0,0,0,0,0,0,0,0,0,0,0,0,0,0,0,0,0,0,0,0,0,0,0,0,0,0,0,0,0,0,0,0,0,0,0,0,0,0,0,0,0,0,0,0,0,0,0,0]
[null,null,null,null,8,null,null,null,null,null,null,null,null,null,0,0,0,0,0,0,0,0,0,0,0,0,0,0,0,0,0,0,0,0,0,0,0,0,0,0,0,0,0,0,0,0,0,0,0,0,0,0,0,0,0,0,0,0,0,0,0]
[null,null,null,null,9,null,null,null,null,null,null,null,null,null,null,0,0,0,0,0,0,0,0,0,0,0,0,0,0,0,0,0,0,0,0,0,0,0,0,0,0,0,0,0,0,0,0,0,0,0,0,0,0,0,0,0,0,0,0,0,0]
[null,null,null,null,10,null,null,null,null,null,null,null,null,null,null,null,0,0,0,0,0,0,0,0,0,0,0,0,0,0,0,0,0,0,0,0,0,0,0,0,0,0,0,0,0,0,0,0,0,0,0,0,0,0,0,0,0,0,0,0,0]
[null,null,{"$f":"Asset5","v":"Distribution Equipment"},null,null,null,2.0589848171820435,2.154491153858443,2.2535133351350618,2.3558650358515205,2.4603789767419908,2.5689703156054593,2.5689703156054593,2.5689703156054593,2.5689703156054593,2.5689703156054593,2.5689703156054593,2.5689703156054593,2.5689703156054593,2.5689703156054593,2.5689703156054593,2.5689703156054593,0.50998549842341545,0.50998549842341545,0.50998549842341545,0.50998549842341545,0.50998549842341545,0.50998549842341545,0.50998549842341545,0.50998549842341545,0.50998549842341545,0.50998549842341545,0.50998549842341545,0.50998549842341545,0.50998549842341545,0.50998549842341545,0.50998549842341545,0.50998549842341545,0.50998549842341545,0.50998549842341545,0.50998549842341545,0.50998549842341545,0.41447916174701438,0.31545698047039561,0.21310527975394,0.10859133886346548,2.2204460492503131E-15,0,0,0,0,0,0,0,0,0,0,0,0,0,0]
[null,{"$f":"C193","v":"Substation Bays"},null,"Initial Asset Base",null,null,63.77934784098175,63.77934784098175,63.77934784098175,63.77934784098175,63.77934784098175,63.77934784098175,63.77934784098175,63.77934784098175,63.77934784098175,63.77934784098175,63.77934784098175,63.77934784098175,63.77934784098175,63.77934784098175,63.77934784098175,63.77934784098175,0,0,0,0,0,0,0,0,0,0,0,0,0,0,0,0,0,0,0,0,0,0,0,0,0,0,0,0,0,0,0,0,0,0,0,0,0,0,0]
[null,null,null,"Capex in year",0]
[null,null,null,null,1,null,null,2.2855871491830979,2.2855871491830979,2.2855871491830979,2.2855871491830979,2.2855871491830979,2.2855871491830979,2.2855871491830979,2.2855871491830979,2.2855871491830979,2.2855871491830979,2.2855871491830979,2.2855871491830979,2.2855871491830979,2.2855871491830979,2.2855871491830979,2.2855871491830979,2.2855871491830979,2.2855871491830979,2.2855871491830979,2.2855871491830979,2.2855871491830979,2.2855871491830979,2.2855871491830979,2.2855871491830979,2.2855871491830979,2.2855871491830979,2.2855871491830979,2.2855871491830979,2.2855871491830979,2.2855871491830979,2.2855871491830979,2.2855871491830979,2.2855871491830979,2.2855871491830979,2.2855871491830979,2.2855871491830979,2.2855871491830979,2.2855871491830979,2.2855871491830979,2.2855871491830979,2.2855871491830979,2.2855871491830979,2.2855871491830979,2.2855871491830979,2.2855871491830979,-8.5265128291212022E-14,0,0,0,0,0,0,0,0]
[null,null,null,null,2,null,null,null,2.3474987582682996,2.3474987582682996,2.3474987582682996,2.3474987582682996,2.3474987582682996,2.3474987582682996,2.3474987582682996,2.3474987582682996,2.3474987582682996,2.3474987582682996,2.3474987582682996,2.3474987582682996,2.3474987582682996,2.3474987582682996,2.3474987582682996,2.3474987582682996,2.3474987582682996,2.3474987582682996,2.3474987582682996,2.3474987582682996,2.3474987582682996,2.3474987582682996,2.3474987582682996,2.3474987582682996,2.3474987582682996,2.3474987582682996,2.3474987582682996,2.3474987582682996,2.3474987582682996,2.3474987582682996,2.3474987582682996,2.3474987582682996,2.3474987582682996,2.3474987582682996,2.3474987582682996,2.3474987582682996,2.3474987582682996,2.3474987582682996,2.3474987582682996,2.3474987582682996,2.3474987582682996,2.3474987582682996,2.3474987582682996,2.3474987582682996,2.3474987582682996,-7.1054273576010019E-14,0,0,0,0,0,0,0]
[null,null,null,null,3,null,null,null,null,2.4296154152431271,2.4296154152431271,2.4296154152431271,2.4296154152431271,2.4296154152431271,2.4296154152431271,2.4296154152431271,2.4296154152431271,2.4296154152431271,2.4296154152431271,2.4296154152431271,2.4296154152431271,2.4296154152431271,2.4296154152431271,2.4296154152431271,2.4296154152431271,2.4296154152431271,2.4296154152431271,2.4296154152431271,2.4296154152431271,2.4296154152431271,2.4296154152431271,2.4296154152431271,2.4296154152431271,2.4296154152431271,2.4296154152431271,2.4296154152431271,2.4296154152431271,2.4296154152431271,2.4296154152431271,2.4296154152431271,2.4296154152431271,2.4296154152431271,2.4296154152431271,2.4296154152431271,2.4296154152431271,2.4296154152431271,2.4296154152431271,2.4296154152431271,2.4296154152431271,2.4296154152431271,2.4296154152431271,2.4296154152431271,2.4296154152431271,2.4296154152431271,1.2789769243681803E-13,0,0,0,0,0,0]
[null,null,null,null,4,null,null,null,null,null,2.4993237875855652,2.4993237875855652,2.4993237875855652,2.4993237875855652,2.4993237875855652,2.4993237875855652,2.4993237875855652,2.4993237875855652,2.4993237875855652,2.4993237875855652,2.4993237875855652,2.4993237875855652,2.4993237875855652,2.4993237875855652,2.4993237875855652,2.4993237875855652,2.4993237875855652,2.4993237875855652,2.4993237875855652,2.4993237875855652,2.4993237875855652,2.4993237875855652,2.4993237875855652,2.4993237875855652,2.4993237875855652,2.4993237875855652,2.4993237875855652,2.4993237875855652,2.4993237875855652,2.4993237875855652,2.4993237875855652,2.4993237875855652,2.4993237875855652,2.4993237875855652,2.4993237875855652,2.4993237875855652,2.4993237875855652,2.4993237875855652,2.4993237875855652,2.4993237875855652,2.4993237875855652,2.4993237875855652,2.4993237875855652,2.4993237875855652,2.4993237875855652,-5.6843418860808015E-14,0,0,0,0,0]
[null,null,null,null,5,null,null,null,null,null,null,2.6045329417956848,2.6045329417956848,2.6045329417956848,2.6045329417956848,2.6045329417956848,2.6045329417956848,2.6045329417956848,2.6045329417956848,2.6045329417956848,2.6045329417956848,2.6045329417956848,2.6045329417956848,2.6045329417956848,2.6045329417956848,2.6045329417956848,2.6045329417956848,2.6045329417956848,2.6045329417956848,2.6045329417956848,2.6045329417956848,2.6045329417956848,2.6045329417956848,2.6045329417956848,2.6045329417956848,2.6045329417956848,2.6045329417956848,2.6045329417956848,2.6045329417956848,2.6045329417956848,2.6045329417956848,2.6045329417956848,2.6045329417956848,2.6045329417956848,2.6045329417956848,2.6045329417956848,2.6045329417956848,2.6045329417956848,2.6045329417956848,2.6045329417956848,2.6045329417956848,2.6045329417956848,2.6045329417956848,2.6045329417956848,2.6045329417956848,2.6045329417956848,8.5265128291212022E-14,0,0,0,0]
[null,null,null,null,6,null,null,null,null,null,null,null,0,0,0,0,0,0,0,0,0,0,0,0,0,0,0,0,0,0,0,0,0,0,0,0,0,0,0,0,0,0,0,0,0,0,0,0,0,0,0,0,0,0,0,0,0,0,0,0,0]
[null,null,null,null,7,null,null,null,null,null,null,null,null,0,0,0,0,0,0,0,0,0,0,0,0,0,0,0,0,0,0,0,0,0,0,0,0,0,0,0,0,0,0,0,0,0,0,0,0,0,0,0,0,0,0,0,0,0,0,0,0]
[null,null,null,null,8,null,null,null,null,null,null,null,null,null,0,0,0,0,0,0,0,0,0,0,0,0,0,0,0,0,0,0,0,0,0,0,0,0,0,0,0,0,0,0,0,0,0,0,0,0,0,0,0,0,0,0,0,0,0,0,0]
[null,null,null,null,9,null,null,null,null,null,null,null,null,null,null,0,0,0,0,0,0,0,0,0,0,0,0,0,0,0,0,0,0,0,0,0,0,0,0,0,0,0,0,0,0,0,0,0,0,0,0,0,0,0,0,0,0,0,0,0,0]
[null,null,null,null,10,null,null,null,null,null,null,null,null,null,null,null,0,0,0,0,0,0,0,0,0,0,0,0,0,0,0,0,0,0,0,0,0,0,0,0,0,0,0,0,0,0,0,0,0,0,0,0,0,0,0,0,0,0,0,0,0]
[null,null,{"$f":"Asset6","v":"Substation Bays"},null,null,null,63.77934784098175,66.064934990164843,68.412433748433145,70.842049163676279,73.341372951261846,75.945905893057528,75.945905893057528,75.945905893057528,75.945905893057528,75.945905893057528,75.945905893057528,75.945905893057528,75.945905893057528,75.945905893057528,75.945905893057528,75.945905893057528,12.166558052075775,12.166558052075775,12.166558052075775,12.166558052075775,12.166558052075775,12.166558052075775,12.166558052075775,12.166558052075775,12.166558052075775,12.166558052075775,12.166558052075775,12.166558052075775,12.166558052075775,12.166558052075775,12.166558052075775,12.166558052075775,12.166558052075775,12.166558052075775,12.166558052075775,12.166558052075775,12.166558052075775,12.166558052075775,12.166558052075775,12.166558052075775,12.166558052075775,12.166558052075775,12.166558052075775,12.166558052075775,12.166558052075775,12.166558052075775,9.8809709028925923,7.533472144624306,5.1038567293813779,2.604532941795628,8.5265128291212022E-14,0,0,0,0]
[null,{"$f":"C206","v":"Substation Establishment"},null,"Initial Asset Base",null,null,15.389492111995169,15.389492111995169,15.389492111995169,15.389492111995169,15.389492111995169,15.389492111995169,15.389492111995169,15.389492111995169,15.389492111995169,15.389492111995169,15.389492111995169,15.389492111995169,15.389492111995169,15.389492111995169,15.389492111995169,15.389492111995169,0,0,0,0,0,0,0,0,0,0,0,0,0,0,0,0,0,0,0,0,0,0,0,0,0,0,0,0,0,0,0,0,0,0,0,0,0,0,0]
[null,null,null,"Capex in year",0]
[null,null,null,null,1,null,null,0.76035214821116215,0.76035214821116215,0.76035214821116215,0.76035214821116215,0.76035214821116215,0.76035214821116215,0.76035214821116215,0.76035214821116215,0.76035214821116215,0.76035214821116215,0.76035214821116215,0.76035214821116215,0.76035214821116215,0.76035214821116215,0.76035214821116215,0.76035214821116215,0.76035214821116215,0.76035214821116215,0.76035214821116215,0.76035214821116215,0.76035214821116215,0.76035214821116215,0.76035214821116215,0.76035214821116215,0.76035214821116215,0.76035214821116215,0.76035214821116215,0.76035214821116215,0.76035214821116215,0.76035214821116215,0.76035214821116215,0.76035214821116215,0.76035214821116215,0.76035214821116215,0.76035214821116215,0.76035214821116215,0.76035214821116215,0.76035214821116215,0.76035214821116215,0.76035214821116215,0.76035214821116215,0.76035214821116215,0.76035214821116215,0.76035214821116215,0.76035214821116215,0.76035214821116215,0.76035214821116215,0.76035214821116215,0.76035214821116215,0.76035214821116215,0.76035214821116215,0.76035214821116215,0.76035214821116215,0.76035214821116215]
[null,null,null,null,2,null,null,null,0.78692708197532402,0.78692708197532402,0.78692708197532402,0.78692708197532402,0.78692708197532402,0.78692708197532402,0.78692708197532402,0.78692708197532402,0.78692708197532402,0.78692708197532402,0.78692708197532402,0.78692708197532402,0.78692708197532402,0.78692708197532402,0.78692708197532402,0.78692708197532402,0.78692708197532402,0.78692708197532402,0.78692708197532402,0.78692708197532402,0.78692708197532402,0.78692708197532402,0.78692708197532402,0.78692708197532402,0.78692708197532402,0.78692708197532402,0.78692708197532402,0.78692708197532402,0.78692708197532402,0.78692708197532402,0.78692708197532402,0.78692708197532402,0.78692708197532402,0.78692708197532402,0.78692708197532402,0.78692708197532402,0.78692708197532402,0.78692708197532402,0.78692708197532402,0.78692708197532402,0.78692708197532402,0.78692708197532402,0.78692708197532402,0.78692708197532402,0.78692708197532402,0.78692708197532402,0.78692708197532402,0.78692708197532402,0.78692708197532402,0.78692708197532402,0.78692708197532402,0.78692708197532402,0.78692708197532402]
[null,null,null,null,3,null,null,null,null,0.81496230674167414,0.81496230674167414,0.81496230674167414,0.81496230674167414,0.81496230674167414,0.81496230674167414,0.81496230674167414,0.81496230674167414,0.81496230674167414,0.81496230674167414,0.81496230674167414,0.81496230674167414,0.81496230674167414,0.81496230674167414,0.81496230674167414,0.81496230674167414,0.81496230674167414,0.81496230674167414,0.81496230674167414,0.81496230674167414,0.81496230674167414,0.81496230674167414,0.81496230674167414,0.81496230674167414,0.81496230674167414,0.81496230674167414,0.81496230674167414,0.81496230674167414,0.81496230674167414,0.81496230674167414,0.81496230674167414,0.81496230674167414,0.81496230674167414,0.81496230674167414,0.81496230674167414,0.81496230674167414,0.81496230674167414,0.81496230674167414,0.81496230674167414,0.81496230674167414,0.81496230674167414,0.81496230674167414,0.81496230674167414,0.81496230674167414,0.81496230674167414,0.81496230674167414,0.81496230674167414,0.81496230674167414,0.81496230674167414,0.81496230674167414,0.81496230674167414,0.81496230674167414]
[null,null,null,null,4,null,null,null,null,null,0.83515092292448678,0.83515092292448678,0.83515092292448678,0.83515092292448678,0.83515092292448678,0.83515092292448678,0.83515092292448678,0.83515092292448678,0.83515092292448678,0.83515092292448678,0.83515092292448678,0.83515092292448678,0.83515092292448678,0.83515092292448678,0.83515092292448678,0.83515092292448678,0.83515092292448678,0.83515092292448678,0.83515092292448678,0.83515092292448678,0.83515092292448678,0.83515092292448678,0.83515092292448678,0.83515092292448678,0.83515092292448678,0.83515092292448678,0.83515092292448678,0.83515092292448678,0.83515092292448678,0.83515092292448678,0.83515092292448678,0.83515092292448678,0.83515092292448678,0.83515092292448678,0.83515092292448678,0.83515092292448678,0.83515092292448678,0.83515092292448678,0.83515092292448678,0.83515092292448678,0.83515092292448678,0.83515092292448678,0.83515092292448678,0.83515092292448678,0.83515092292448678,0.83515092292448678,0.83515092292448678,0.83515092292448678,0.83515092292448678,0.83515092292448678,0.83515092292448678]
[null,null,null,null,5,null,null,null,null,null,null,0.87002737278535514,0.87002737278535514,0.87002737278535514,0.87002737278535514,0.87002737278535514,0.87002737278535514,0.87002737278535514,0.87002737278535514,0.87002737278535514,0.87002737278535514,0.87002737278535514,0.87002737278535514,0.87002737278535514,0.87002737278535514,0.87002737278535514,0.87002737278535514,0.87002737278535514,0.87002737278535514,0.87002737278535514,0.87002737278535514,0.87002737278535514,0.87002737278535514,0.87002737278535514,0.87002737278535514,0.87002737278535514,0.87002737278535514,0.87002737278535514,0.87002737278535514,0.87002737278535514,0.87002737278535514,0.87002737278535514,0.87002737278535514,0.87002737278535514,0.87002737278535514,0.87002737278535514,0.87002737278535514,0.87002737278535514,0.87002737278535514,0.87002737278535514,0.87002737278535514,0.87002737278535514,0.87002737278535514,0.87002737278535514,0.87002737278535514,0.87002737278535514,0.87002737278535514,0.87002737278535514,0.87002737278535514,0.87002737278535514,0.87002737278535514]
[null,null,null,null,6,null,null,null,null,null,null,null,0,0,0,0,0,0,0,0,0,0,0,0,0,0,0,0,0,0,0,0,0,0,0,0,0,0,0,0,0,0,0,0,0,0,0,0,0,0,0,0,0,0,0,0,0,0,0,0,0]
[null,null,null,null,7,null,null,null,null,null,null,null,null,0,0,0,0,0,0,0,0,0,0,0,0,0,0,0,0,0,0,0,0,0,0,0,0,0,0,0,0,0,0,0,0,0,0,0,0,0,0,0,0,0,0,0,0,0,0,0,0]
[null,null,null,null,8,null,null,null,null,null,null,null,null,null,0,0,0,0,0,0,0,0,0,0,0,0,0,0,0,0,0,0,0,0,0,0,0,0,0,0,0,0,0,0,0,0,0,0,0,0,0,0,0,0,0,0,0,0,0,0,0]
[null,null,null,null,9,null,null,null,null,null,null,null,null,null,null,0,0,0,0,0,0,0,0,0,0,0,0,0,0,0,0,0,0,0,0,0,0,0,0,0,0,0,0,0,0,0,0,0,0,0,0,0,0,0,0,0,0,0,0,0,0]
[null,null,null,null,10,null,null,null,null,null,null,null,null,null,null,null,0,0,0,0,0,0,0,0,0,0,0,0,0,0,0,0,0,0,0,0,0,0,0,0,0,0,0,0,0,0,0,0,0,0,0,0,0,0,0,0,0,0,0,0,0]
[null,null,{"$f":"Asset7","v":"Substation Establishment"},null,null,null,15.389492111995169,16.149844260206333,16.936771342181657,17.751733648923331,18.586884571847818,19.456911944633173,19.456911944633173,19.456911944633173,19.456911944633173,19.456911944633173,19.456911944633173,19.456911944633173,19.456911944633173,19.456911944633173,19.456911944633173,19.456911944633173,4.0674198326380022,4.0674198326380022,4.0674198326380022,4.0674198326380022,4.0674198326380022,4.0674198326380022,4.0674198326380022,4.0674198326380022,4.0674198326380022,4.0674198326380022,4.0674198326380022,4.0674198326380022,4.0674198326380022,4.0674198326380022,4.0674198326380022,4.0674198326380022,4.0674198326380022,4.0674198326380022,4.0674198326380022,4.0674198326380022,4.0674198326380022,4.0674198326380022,4.0674198326380022,4.0674198326380022,4.0674198326380022,4.0674198326380022,4.0674198326380022,4.0674198326380022,4.0674198326380022,4.0674198326380022,4.0674198326380022,4.0674198326380022,4.0674198326380022,4.0674198326380022,4.0674198326380022,4.0674198326380022,4.0674198326380022,4.0674198326380022,4.0674198326380022]
[null,{"$f":"C219","v":"Distribution Substation Switchgear"},null,"Initial Asset Base",null,null,19.808673950868226,19.808673950868226,19.808673950868226,19.808673950868226,19.808673950868226,19.808673950868226,19.808673950868226,19.808673950868226,19.808673950868226,19.808673950868226,19.808673950868226,19.808673950868226,19.808673950868226,19.808673950868226,19.808673950868226,19.808673950868226,0,0,0,0,0,0,0,0,0,0,0,0,0,0,0,0,0,0,0,0,0,0,0,0,0,0,0,0,0,0,0,0,0,0,0,0,0,0,0]
[null,null,null,"Capex in year",0]
[null,null,null,null,1,null,null,1.1342571702989941,1.1342571702989941,1.1342571702989941,1.1342571702989941,1.1342571702989941,1.1342571702989941,1.1342571702989941,1.1342571702989941,1.1342571702989941,1.1342571702989941,1.1342571702989941,1.1342571702989941,1.1342571702989941,1.1342571702989941,1.1342571702989941,1.1342571702989941,1.1342571702989941,1.1342571702989941,1.1342571702989941,1.1342571702989941,1.1342571702989941,1.1342571702989941,1.1342571702989941,1.1342571702989941,1.1342571702989941,1.1342571702989941,1.1342571702989941,1.1342571702989941,1.1342571702989941,1.1342571702989941,1.1342571702989941,1.1342571702989941,1.1342571702989941,1.1342571702989941,1.1342571702989941,1.1342571702989941,1.1342571702989941,1.1342571702989941,1.1342571702989941,1.1342571702989941,1.1342571702989941,1.1342571702989941,1.1342571702989941,1.1342571702989941,1.1342571702989941,0,0,0,0,0,0,0,0,0]
[null,null,null,null,2,null,null,null,1.1707775657827433,1.1707775657827433,1.1707775657827433,1.1707775657827433,1.1707775657827433,1.1707775657827433,1.1707775657827433,1.1707775657827433,1.1707775657827433,1.1707775657827433,1.1707775657827433,1.1707775657827433,1.1707775657827433,1.1707775657827433,1.1707775657827433,1.1707775657827433,1.1707775657827433,1.1707775657827433,1.1707775657827433,1.1707775657827433,1.1707775657827433,1.1707775657827433,1.1707775657827433,1.1707775657827433,1.1707775657827433,1.1707775657827433,1.1707775657827433,1.1707775657827433,1.1707775657827433,1.1707775657827433,1.1707775657827433,1.1707775657827433,1.1707775657827433,1.1707775657827433,1.1707775657827433,1.1707775657827433,1.1707775657827433,1.1707775657827433,1.1707775657827433,1.1707775657827433,1.1707775657827433,1.1707775657827433,1.1707775657827433,1.1707775657827433,1.1707775657827433,2.1316282072803006E-14,0,0,0,0,0,0,0]
[null,null,null,null,3,null,null,null,null,1.2108937208555406,1.2108937208555406,1.2108937208555406,1.2108937208555406,1.2108937208555406,1.2108937208555406,1.2108937208555406,1.2108937208555406,1.2108937208555406,1.2108937208555406,1.2108937208555406,1.2108937208555406,1.2108937208555406,1.2108937208555406,1.2108937208555406,1.2108937208555406,1.2108937208555406,1.2108937208555406,1.2108937208555406,1.2108937208555406,1.2108937208555406,1.2108937208555406,1.2108937208555406,1.2108937208555406,1.2108937208555406,1.2108937208555406,1.2108937208555406,1.2108937208555406,1.2108937208555406,1.2108937208555406,1.2108937208555406,1.2108937208555406,1.2108937208555406,1.2108937208555406,1.2108937208555406,1.2108937208555406,1.2108937208555406,1.2108937208555406,1.2108937208555406,1.2108937208555406,1.2108937208555406,1.2108937208555406,1.2108937208555406,1.2108937208555406,1.2108937208555406,4.2632564145606011E-14,0,0,0,0,0,0]
[null,null,null,null,4,null,null,null,null,null,1.2408035301329152,1.2408035301329152,1.2408035301329152,1.2408035301329152,1.2408035301329152,1.2408035301329152,1.2408035301329152,1.2408035301329152,1.2408035301329152,1.2408035301329152,1.2408035301329152,1.2408035301329152,1.2408035301329152,1.2408035301329152,1.2408035301329152,1.2408035301329152,1.2408035301329152,1.2408035301329152,1.2408035301329152,1.2408035301329152,1.2408035301329152,1.2408035301329152,1.2408035301329152,1.2408035301329152,1.2408035301329152,1.2408035301329152,1.2408035301329152,1.2408035301329152,1.2408035301329152,1.2408035301329152,1.2408035301329152,1.2408035301329152,1.2408035301329152,1.2408035301329152,1.2408035301329152,1.2408035301329152,1.2408035301329152,1.2408035301329152,1.2408035301329152,1.2408035301329152,1.2408035301329152,1.2408035301329152,1.2408035301329152,1.2408035301329152,1.2408035301329152,0,0,0,0,0,0]
[null,null,null,null,5,null,null,null,null,null,null,1.2910251047570347,1.2910251047570347,1.2910251047570347,1.2910251047570347,1.2910251047570347,1.2910251047570347,1.2910251047570347,1.2910251047570347,1.2910251047570347,1.2910251047570347,1.2910251047570347,1.2910251047570347,1.2910251047570347,1.2910251047570347,1.2910251047570347,1.2910251047570347,1.2910251047570347,1.2910251047570347,1.2910251047570347,1.2910251047570347,1.2910251047570347,1.2910251047570347,1.2910251047570347,1.2910251047570347,1.2910251047570347,1.2910251047570347,1.2910251047570347,1.2910251047570347,1.2910251047570347,1.2910251047570347,1.2910251047570347,1.2910251047570347,1.2910251047570347,1.2910251047570347,1.2910251047570347,1.2910251047570347,1.2910251047570347,1.2910251047570347,1.2910251047570347,1.2910251047570347,1.2910251047570347,1.2910251047570347,1.2910251047570347,1.2910251047570347,1.2910251047570347,2.1316282072803006E-14,0,0,0,0]
[null,null,null,null,6,null,null,null,null,null,null,null,0,0,0,0,0,0,0,0,0,0,0,0,0,0,0,0,0,0,0,0,0,0,0,0,0,0,0,0,0,0,0,0,0,0,0,0,0,0,0,0,0,0,0,0,0,0,0,0,0]
[null,null,null,null,7,null,null,null,null,null,null,null,null,0,0,0,0,0,0,0,0,0,0,0,0,0,0,0,0,0,0,0,0,0,0,0,0,0,0,0,0,0,0,0,0,0,0,0,0,0,0,0,0,0,0,0,0,0,0,0,0]
[null,null,null,null,8,null,null,null,null,null,null,null,null,null,0,0,0,0,0,0,0,0,0,0,0,0,0,0,0,0,0,0,0,0,0,0,0,0,0,0,0,0,0,0,0,0,0,0,0,0,0,0,0,0,0,0,0,0,0,0,0]
[null,null,null,null,9,null,null,null,null,null,null,null,null,null,null,0,0,0,0,0,0,0,0,0,0,0,0,0,0,0,0,0,0,0,0,0,0,0,0,0,0,0,0,0,0,0,0,0,0,0,0,0,0,0,0,0,0,0,0,0,0]
[null,null,null,null,10,null,null,null,null,null,null,null,null,null,null,null,0,0,0,0,0,0,0,0,0,0,0,0,0,0,0,0,0,0,0,0,0,0,0,0,0,0,0,0,0,0,0,0,0,0,0,0,0,0,0,0,0,0,0,0,0]
[null,null,{"$f":"Asset8","v":"Distribution Substation Switchgear"},null,null,null,19.808673950868226,20.94293112116722,22.113708686949963,23.324602407805504,24.565405937938419,25.856431042695455,25.856431042695455,25.856431042695455,25.856431042695455,25.856431042695455,25.856431042695455,25.856431042695455,25.856431042695455,25.856431042695455,25.856431042695455,25.856431042695455,6.0477570918272274,6.0477570918272274,6.0477570918272274,6.0477570918272274,6.0477570918272274,6.0477570918272274,6.0477570918272274,6.0477570918272274,6.0477570918272274,6.0477570918272274,6.0477570918272274,6.0477570918272274,6.0477570918272274,6.0477570918272274,6.0477570918272274,6.0477570918272274,6.0477570918272274,6.0477570918272274,6.0477570918272274,6.0477570918272274,6.0477570918272274,6.0477570918272274,6.0477570918272274,6.0477570918272274,6.0477570918272274,6.0477570918272274,6.0477570918272274,6.0477570918272274,6.0477570918272274,6.0477570918272274,4.9134999215282331,3.7427223557455118,2.5318286348899925,1.2910251047570347,2.1316282072803006E-14,0,0,0,0]
[null,{"$f":"C232","v":"Zone Transformers"},null,"Initial Asset Base",null,null,15.615911072738239,15.615911072738239,15.615911072738239,15.615911072738239,15.615911072738239,15.615911072738239,15.615911072738239,15.615911072738239,15.615911072738239,15.615911072738239,15.615911072738239,15.615911072738239,15.615911072738239,15.615911072738239,15.615911072738239,15.615911072738239,0,0,0,0,0,0,0,0,0,0,0,0,0,0,0,0,0,0,0,0,0,0,0,0,0,0,0,0,0,0,0,0,0,0,0,0,0,0,0]
[null,null,null,"Capex in year",0]
[null,null,null,null,1,null,null,0.30925363663118172,0.30925363663118172,0.30925363663118172,0.30925363663118172,0.30925363663118172,0.30925363663118172,0.30925363663118172,0.30925363663118172,0.30925363663118172,0.30925363663118172,0.30925363663118172,0.30925363663118172,0.30925363663118172,0.30925363663118172,0.30925363663118172,0.30925363663118172,0.30925363663118172,0.30925363663118172,0.30925363663118172,0.30925363663118172,0.30925363663118172,0.30925363663118172,0.30925363663118172,0.30925363663118172,0.30925363663118172,0.30925363663118172,0.30925363663118172,0.30925363663118172,0.30925363663118172,0.30925363663118172,0.30925363663118172,0.30925363663118172,0.30925363663118172,0.30925363663118172,0.30925363663118172,0.30925363663118172,0.30925363663118172,0.30925363663118172,0.30925363663118172,0.30925363663118172,0.30925363663118172,0.30925363663118172,0.30925363663118172,0.30925363663118172,0.30925363663118172,0.30925363663118172,0.30925363663118172,0.30925363663118172,0.30925363663118172,0.30925363663118172,5.3290705182007514E-15,0,0,0]
[null,null,null,null,2,null,null,null,0.31817115538555696,0.31817115538555696,0.31817115538555696,0.31817115538555696,0.31817115538555696,0.31817115538555696,0.31817115538555696,0.31817115538555696,0.31817115538555696,0.31817115538555696,0.31817115538555696,0.31817115538555696,0.31817115538555696,0.31817115538555696,0.31817115538555696,0.31817115538555696,0.31817115538555696,0.31817115538555696,0.31817115538555696,0.31817115538555696,0.31817115538555696,0.31817115538555696,0.31817115538555696,0.31817115538555696,0.31817115538555696,0.31817115538555696,0.31817115538555696,0.31817115538555696,0.31817115538555696,0.31817115538555696,0.31817115538555696,0.31817115538555696,0.31817115538555696,0.31817115538555696,0.31817115538555696,0.31817115538555696,0.31817115538555696,0.31817115538555696,0.31817115538555696,0.31817115538555696,0.31817115538555696,0.31817115538555696,0.31817115538555696,0.31817115538555696,0.31817115538555696,0.31817115538555696,0.31817115538555696,0.31817115538555696,0.31817115538555696,0.31817115538555696,8.8817841970012523E-15,0,0]
[null,null,null,null,3,null,null,null,null,0.32922276777481913,0.32922276777481913,0.32922276777481913,0.32922276777481913,0.32922276777481913,0.32922276777481913,0.32922276777481913,0.32922276777481913,0.32922276777481913,0.32922276777481913,0.32922276777481913,0.32922276777481913,0.32922276777481913,0.32922276777481913,0.32922276777481913,0.32922276777481913,0.32922276777481913,0.32922276777481913,0.32922276777481913,0.32922276777481913,0.32922276777481913,0.32922276777481913,0.32922276777481913,0.32922276777481913,0.32922276777481913,0.32922276777481913,0.32922276777481913,0.32922276777481913,0.32922276777481913,0.32922276777481913,0.32922276777481913,0.32922276777481913,0.32922276777481913,0.32922276777481913,0.32922276777481913,0.32922276777481913,0.32922276777481913,0.32922276777481913,0.32922276777481913,0.32922276777481913,0.32922276777481913,0.32922276777481913,0.32922276777481913,0.32922276777481913,0.32922276777481913,0.32922276777481913,0.32922276777481913,0.32922276777481913,0.32922276777481913,0.32922276777481913,-7.1054273576010019E-15,0]
[null,null,null,null,4,null,null,null,null,null,0.33821790540562602,0.33821790540562602,0.33821790540562602,0.33821790540562602,0.33821790540562602,0.33821790540562602,0.33821790540562602,0.33821790540562602,0.33821790540562602,0.33821790540562602,0.33821790540562602,0.33821790540562602,0.33821790540562602,0.33821790540562602,0.33821790540562602,0.33821790540562602,0.33821790540562602,0.33821790540562602,0.33821790540562602,0.33821790540562602,0.33821790540562602,0.33821790540562602,0.33821790540562602,0.33821790540562602,0.33821790540562602,0.33821790540562602,0.33821790540562602,0.33821790540562602,0.33821790540562602,0.33821790540562602,0.33821790540562602,0.33821790540562602,0.33821790540562602,0.33821790540562602,0.33821790540562602,0.33821790540562602,0.33821790540562602,0.33821790540562602,0.33821790540562602,0.33821790540562602,0.33821790540562602,0.33821790540562602,0.33821790540562602,0.33821790540562602,0.33821790540562602,0.33821790540562602,0.33821790540562602,0.33821790540562602,0.33821790540562602,0.33821790540562602,-3.5527136788005009E-15]
[null,null,null,null,5,null,null,null,null,null,null,0.35226774546969009,0.35226774546969009,0.35226774546969009,0.35226774546969009,0.35226774546969009,0.35226774546969009,0.35226774546969009,0.35226774546969009,0.35226774546969009,0.35226774546969009,0.35226774546969009,0.35226774546969009,0.35226774546969009,0.35226774546969009,0.35226774546969009,0.35226774546969009,0.35226774546969009,0.35226774546969009,0.35226774546969009,0.35226774546969009,0.35226774546969009,0.35226774546969009,0.35226774546969009,0.35226774546969009,0.35226774546969009,0.35226774546969009,0.35226774546969009,0.35226774546969009,0.35226774546969009,0.35226774546969009,0.35226774546969009,0.35226774546969009,0.35226774546969009,0.35226774546969009,0.35226774546969009,0.35226774546969009,0.35226774546969009,0.35226774546969009,0.35226774546969009,0.35226774546969009,0.35226774546969009,0.35226774546969009,0.35226774546969009,0.35226774546969009,0.35226774546969009,0.35226774546969009,0.35226774546969009,0.35226774546969009,0.35226774546969009,0.35226774546969009]
[null,null,null,null,6,null,null,null,null,null,null,null,0,0,0,0,0,0,0,0,0,0,0,0,0,0,0,0,0,0,0,0,0,0,0,0,0,0,0,0,0,0,0,0,0,0,0,0,0,0,0,0,0,0,0,0,0,0,0,0,0]
[null,null,null,null,7,null,null,null,null,null,null,null,null,0,0,0,0,0,0,0,0,0,0,0,0,0,0,0,0,0,0,0,0,0,0,0,0,0,0,0,0,0,0,0,0,0,0,0,0,0,0,0,0,0,0,0,0,0,0,0,0]
[null,null,null,null,8,null,null,null,null,null,null,null,null,null,0,0,0,0,0,0,0,0,0,0,0,0,0,0,0,0,0,0,0,0,0,0,0,0,0,0,0,0,0,0,0,0,0,0,0,0,0,0,0,0,0,0,0,0,0,0,0]
[null,null,null,null,9,null,null,null,null,null,null,null,null,null,null,0,0,0,0,0,0,0,0,0,0,0,0,0,0,0,0,0,0,0,0,0,0,0,0,0,0,0,0,0,0,0,0,0,0,0,0,0,0,0,0,0,0,0,0,0,0]
[null,null,null,null,10,null,null,null,null,null,null,null,null,null,null,null,0,0,0,0,0,0,0,0,0,0,0,0,0,0,0,0,0,0,0,0,0,0,0,0,0,0,0,0,0,0,0,0,0,0,0,0,0,0,0,0,0,0,0,0,0]
[null,null,{"$f":"Asset9","v":"Zone Transformers"},null,null,null,15.615911072738239,15.925164709369421,16.243335864754979,16.572558632529798,16.910776537935423,17.263044283405112,17.263044283405112,17.263044283405112,17.263044283405112,17.263044283405112,17.263044283405112,17.263044283405112,17.263044283405112,17.263044283405112,17.263044283405112,17.263044283405112,1.6471332106668739,1.6471332106668739,1.6471332106668739,1.6471332106668739,1.6471332106668739,1.6471332106668739,1.6471332106668739,1.6471332106668739,1.6471332106668739,1.6471332106668739,1.6471332106668739,1.6471332106668739,1.6471332106668739,1.6471332106668739,1.6471332106668739,1.6471332106668739,1.6471332106668739,1.6471332106668739,1.6471332106668739,1.6471332106668739,1.6471332106668739,1.6471332106668739,1.6471332106668739,1.6471332106668739,1.6471332106668739,1.6471332106668739,1.6471332106668739,1.6471332106668739,1.6471332106668739,1.6471332106668739,1.6471332106668739,1.6471332106668739,1.6471332106668739,1.6471332106668739,1.6471332106668739,1.3378795740356975,1.0197084186501442,0.690485650875309,0.35226774546968653]
[null,{"$f":"C245","v":"Distribution Transformers"},null,"Initial Asset Base",null,null,70.927954394958959,70.927954394958959,70.927954394958959,70.927954394958959,70.927954394958959,70.927954394958959,70.927954394958959,70.927954394958959,70.927954394958959,70.927954394958959,70.927954394958959,70.927954394958959,70.927954394958959,70.927954394958959,70.927954394958959,70.927954394958959,0,0,0,0,0,0,0,0,0,0,0,0,0,0,0,0,0,0,0,0,0,0,0,0,0,0,0,0,0,0,0,0,0,0,0,0,0,0,0]
[null,null,null,"Capex in year",0]
[null,null,null,null,1,null,null,2.2275031203351561,2.2275031203351561,2.2275031203351561,2.2275031203351561,2.2275031203351561,2.2275031203351561,2.2275031203351561,2.2275031203351561,2.2275031203351561,2.2275031203351561,2.2275031203351561,2.2275031203351561,2.2275031203351561,2.2275031203351561,2.2275031203351561,2.2275031203351561,2.2275031203351561,2.2275031203351561,2.2275031203351561,2.2275031203351561,2.2275031203351561,2.2275031203351561,2.2275031203351561,2.2275031203351561,2.2275031203351561,2.2275031203351561,2.2275031203351561,2.2275031203351561,2.2275031203351561,2.2275031203351561,2.2275031203351561,2.2275031203351561,2.2275031203351561,2.2275031203351561,2.2275031203351561,2.2275031203351561,2.2275031203351561,2.2275031203351561,2.2275031203351561,2.2275031203351561,2.2275031203351561,2.2275031203351561,2.2275031203351561,2.2275031203351561,2.2275031203351561,-7.1054273576010019E-14,0,0,0,0,0,0,0,0]
[null,null,null,null,2,null,null,null,2.28672751883065,2.28672751883065,2.28672751883065,2.28672751883065,2.28672751883065,2.28672751883065,2.28672751883065,2.28672751883065,2.28672751883065,2.28672751883065,2.28672751883065,2.28672751883065,2.28672751883065,2.28672751883065,2.28672751883065,2.28672751883065,2.28672751883065,2.28672751883065,2.28672751883065,2.28672751883065,2.28672751883065,2.28672751883065,2.28672751883065,2.28672751883065,2.28672751883065,2.28672751883065,2.28672751883065,2.28672751883065,2.28672751883065,2.28672751883065,2.28672751883065,2.28672751883065,2.28672751883065,2.28672751883065,2.28672751883065,2.28672751883065,2.28672751883065,2.28672751883065,2.28672751883065,2.28672751883065,2.28672751883065,2.28672751883065,2.28672751883065,2.28672751883065,2.28672751883065,4.2632564145606011E-14,0,0,0,0,0,0,0]
[null,null,null,null,3,null,null,null,null,2.3668794565831304,2.3668794565831304,2.3668794565831304,2.3668794565831304,2.3668794565831304,2.3668794565831304,2.3668794565831304,2.3668794565831304,2.3668794565831304,2.3668794565831304,2.3668794565831304,2.3668794565831304,2.3668794565831304,2.3668794565831304,2.3668794565831304,2.3668794565831304,2.3668794565831304,2.3668794565831304,2.3668794565831304,2.3668794565831304,2.3668794565831304,2.3668794565831304,2.3668794565831304,2.3668794565831304,2.3668794565831304,2.3668794565831304,2.3668794565831304,2.3668794565831304,2.3668794565831304,2.3668794565831304,2.3668794565831304,2.3668794565831304,2.3668794565831304,2.3668794565831304,2.3668794565831304,2.3668794565831304,2.3668794565831304,2.3668794565831304,2.3668794565831304,2.3668794565831304,2.3668794565831304,2.3668794565831304,2.3668794565831304,2.3668794565831304,2.3668794565831304,-5.6843418860808015E-14,0,0,0,0,0,0]
[null,null,null,null,4,null,null,null,null,null,2.4357164923890315,2.4357164923890315,2.4357164923890315,2.4357164923890315,2.4357164923890315,2.4357164923890315,2.4357164923890315,2.4357164923890315,2.4357164923890315,2.4357164923890315,2.4357164923890315,2.4357164923890315,2.4357164923890315,2.4357164923890315,2.4357164923890315,2.4357164923890315,2.4357164923890315,2.4357164923890315,2.4357164923890315,2.4357164923890315,2.4357164923890315,2.4357164923890315,2.4357164923890315,2.4357164923890315,2.4357164923890315,2.4357164923890315,2.4357164923890315,2.4357164923890315,2.4357164923890315,2.4357164923890315,2.4357164923890315,2.4357164923890315,2.4357164923890315,2.4357164923890315,2.4357164923890315,2.4357164923890315,2.4357164923890315,2.4357164923890315,2.4357164923890315,2.4357164923890315,2.4357164923890315,2.4357164923890315,2.4357164923890315,2.4357164923890315,2.4357164923890315,-7.1054273576010019E-14,0,0,0,0,0]
[null,null,null,null,5,null,null,null,null,null,null,2.5386343967679958,2.5386343967679958,2.5386343967679958,2.5386343967679958,2.5386343967679958,2.5386343967679958,2.5386343967679958,2.5386343967679958,2.5386343967679958,2.5386343967679958,2.5386343967679958,2.5386343967679958,2.5386343967679958,2.5386343967679958,2.5386343967679958,2.5386343967679958,2.5386343967679958,2.5386343967679958,2.5386343967679958,2.5386343967679958,2.5386343967679958,2.5386343967679958,2.5386343967679958,2.5386343967679958,2.5386343967679958,2.5386343967679958,2.5386343967679958,2.5386343967679958,2.5386343967679958,2.5386343967679958,2.5386343967679958,2.5386343967679958,2.5386343967679958,2.5386343967679958,2.5386343967679958,2.5386343967679958,2.5386343967679958,2.5386343967679958,2.5386343967679958,2.5386343967679958,2.5386343967679958,2.5386343967679958,2.5386343967679958,2.5386343967679958,2.5386343967679958,1.1368683772161603E-13,0,0,0,0]
[null,null,null,null,6,null,null,null,null,null,null,null,0,0,0,0,0,0,0,0,0,0,0,0,0,0,0,0,0,0,0,0,0,0,0,0,0,0,0,0,0,0,0,0,0,0,0,0,0,0,0,0,0,0,0,0,0,0,0,0,0]
[null,null,null,null,7,null,null,null,null,null,null,null,null,0,0,0,0,0,0,0,0,0,0,0,0,0,0,0,0,0,0,0,0,0,0,0,0,0,0,0,0,0,0,0,0,0,0,0,0,0,0,0,0,0,0,0,0,0,0,0,0]
[null,null,null,null,8,null,null,null,null,null,null,null,null,null,0,0,0,0,0,0,0,0,0,0,0,0,0,0,0,0,0,0,0,0,0,0,0,0,0,0,0,0,0,0,0,0,0,0,0,0,0,0,0,0,0,0,0,0,0,0,0]
[null,null,null,null,9,null,null,null,null,null,null,null,null,null,null,0,0,0,0,0,0,0,0,0,0,0,0,0,0,0,0,0,0,0,0,0,0,0,0,0,0,0,0,0,0,0,0,0,0,0,0,0,0,0,0,0,0,0,0,0,0]
[null,null,null,null,10,null,null,null,null,null,null,null,null,null,null,null,0,0,0,0,0,0,0,0,0,0,0,0,0,0,0,0,0,0,0,0,0,0,0,0,0,0,0,0,0,0,0,0,0,0,0,0,0,0,0,0,0,0,0,0,0]
[null,null,{"$f":"Asset10","v":"Distribution Transformers"},null,null,null,70.927954394958959,73.155457515294117,75.442185034124762,77.809064490707897,80.244780983096931,82.78341537986492,82.78341537986492,82.78341537986492,82.78341537986492,82.78341537986492,82.78341537986492,82.78341537986492,82.78341537986492,82.78341537986492,82.78341537986492,82.78341537986492,11.855460984905964,11.855460984905964,11.855460984905964,11.855460984905964,11.855460984905964,11.855460984905964,11.855460984905964,11.855460984905964,11.855460984905964,11.855460984905964,11.855460984905964,11.855460984905964,11.855460984905964,11.855460984905964,11.855460984905964,11.855460984905964,11.855460984905964,11.855460984905964,11.855460984905964,11.855460984905964,11.855460984905964,11.855460984905964,11.855460984905964,11.855460984905964,11.855460984905964,11.855460984905964,11.855460984905964,11.855460984905964,11.855460984905964,11.855460984905964,9.6279578645707371,7.3412303457402004,4.9743508891569705,2.5386343967679248,1.1368683772161603E-13,0,0,0,0]
[null,{"$f":"C258","v":"Low Voltage Services"},null,"Initial Asset Base",null,null,13.645155561247948,13.645155561247948,13.645155561247948,13.645155561247948,13.645155561247948,13.645155561247948,13.645155561247948,13.645155561247948,13.645155561247948,13.645155561247948,13.645155561247948,13.645155561247948,13.645155561247948,13.645155561247948,13.645155561247948,13.645155561247948,0,0,0,0,0,0,0,0,0,0,0,0,0,0,0,0,0,0,0,0,0,0,0,0,0,0,0,0,0,0,0,0,0,0,0,0,0,0,0]
[null,null,null,"Capex in year",0]
[null,null,null,null,1,null,null,1.0437065832366546,1.0437065832366546,1.0437065832366546,1.0437065832366546,1.0437065832366546,1.0437065832366546,1.0437065832366546,1.0437065832366546,1.0437065832366546,1.0437065832366546,1.0437065832366546,1.0437065832366546,1.0437065832366546,1.0437065832366546,1.0437065832366546,1.0437065832366546,1.0437065832366546,1.0437065832366546,1.0437065832366546,1.0437065832366546,1.0437065832366546,1.0437065832366546,1.0437065832366546,1.0437065832366546,1.0437065832366546,1.0437065832366546,1.0437065832366546,1.0437065832366546,1.0437065832366546,1.0437065832366546,1.0437065832366546,1.0437065832366546,1.0437065832366546,1.0437065832366546,1.0437065832366546,-7.1054273576010019E-15,0,0,0,0,0,0,0,0,0,0,0,0,0,0,0,0,0,0]
[null,null,null,null,2,null,null,null,1.0645842857856744,1.0645842857856744,1.0645842857856744,1.0645842857856744,1.0645842857856744,1.0645842857856744,1.0645842857856744,1.0645842857856744,1.0645842857856744,1.0645842857856744,1.0645842857856744,1.0645842857856744,1.0645842857856744,1.0645842857856744,1.0645842857856744,1.0645842857856744,1.0645842857856744,1.0645842857856744,1.0645842857856744,1.0645842857856744,1.0645842857856744,1.0645842857856744,1.0645842857856744,1.0645842857856744,1.0645842857856744,1.0645842857856744,1.0645842857856744,1.0645842857856744,1.0645842857856744,1.0645842857856744,1.0645842857856744,1.0645842857856744,1.0645842857856744,1.0645842857856744,1.0645842857856744,0,0,0,0,0,0,0,0,0,0,0,0,0,0,0,0,0,0]
[null,null,null,null,3,null,null,null,null,1.1028933263552532,1.1028933263552532,1.1028933263552532,1.1028933263552532,1.1028933263552532,1.1028933263552532,1.1028933263552532,1.1028933263552532,1.1028933263552532,1.1028933263552532,1.1028933263552532,1.1028933263552532,1.1028933263552532,1.1028933263552532,1.1028933263552532,1.1028933263552532,1.1028933263552532,1.1028933263552532,1.1028933263552532,1.1028933263552532,1.1028933263552532,1.1028933263552532,1.1028933263552532,1.1028933263552532,1.1028933263552532,1.1028933263552532,1.1028933263552532,1.1028933263552532,1.1028933263552532,1.1028933263552532,1.1028933263552532,1.1028933263552532,1.1028933263552532,1.1028933263552532,1.1028933263552532,7.1054273576010019E-15,0,0,0,0,0,0,0,0,0,0,0,0,0,0,0,0]
[null,null,null,null,4,null,null,null,null,null,1.140701113860767,1.140701113860767,1.140701113860767,1.140701113860767,1.140701113860767,1.140701113860767,1.140701113860767,1.140701113860767,1.140701113860767,1.140701113860767,1.140701113860767,1.140701113860767,1.140701113860767,1.140701113860767,1.140701113860767,1.140701113860767,1.140701113860767,1.140701113860767,1.140701113860767,1.140701113860767,1.140701113860767,1.140701113860767,1.140701113860767,1.140701113860767,1.140701113860767,1.140701113860767,1.140701113860767,1.140701113860767,1.140701113860767,1.140701113860767,1.140701113860767,1.140701113860767,1.140701113860767,1.140701113860767,1.140701113860767,7.1054273576010019E-15,0,0,0,0,0,0,0,0,0,0,0,0,0,0,0]
[null,null,null,null,5,null,null,null,null,null,null,1.1912833882428668,1.1912833882428668,1.1912833882428668,1.1912833882428668,1.1912833882428668,1.1912833882428668,1.1912833882428668,1.1912833882428668,1.1912833882428668,1.1912833882428668,1.1912833882428668,1.1912833882428668,1.1912833882428668,1.1912833882428668,1.1912833882428668,1.1912833882428668,1.1912833882428668,1.1912833882428668,1.1912833882428668,1.1912833882428668,1.1912833882428668,1.1912833882428668,1.1912833882428668,1.1912833882428668,1.1912833882428668,1.1912833882428668,1.1912833882428668,1.1912833882428668,1.1912833882428668,1.1912833882428668,1.1912833882428668,1.1912833882428668,1.1912833882428668,1.1912833882428668,1.1912833882428668,2.8421709430404007E-14,0,0,0,0,0,0,0,0,0,0,0,0,0,0]
[null,null,null,null,6,null,null,null,null,null,null,null,0,0,0,0,0,0,0,0,0,0,0,0,0,0,0,0,0,0,0,0,0,0,0,0,0,0,0,0,0,0,0,0,0,0,0,0,0,0,0,0,0,0,0,0,0,0,0,0,0]
[null,null,null,null,7,null,null,null,null,null,null,null,null,0,0,0,0,0,0,0,0,0,0,0,0,0,0,0,0,0,0,0,0,0,0,0,0,0,0,0,0,0,0,0,0,0,0,0,0,0,0,0,0,0,0,0,0,0,0,0,0]
[null,null,null,null,8,null,null,null,null,null,null,null,null,null,0,0,0,0,0,0,0,0,0,0,0,0,0,0,0,0,0,0,0,0,0,0,0,0,0,0,0,0,0,0,0,0,0,0,0,0,0,0,0,0,0,0,0,0,0,0,0]
[null,null,null,null,9,null,null,null,null,null,null,null,null,null,null,0,0,0,0,0,0,0,0,0,0,0,0,0,0,0,0,0,0,0,0,0,0,0,0,0,0,0,0,0,0,0,0,0,0,0,0,0,0,0,0,0,0,0,0,0,0]
[null,null,null,null,10,null,null,null,null,null,null,null,null,null,null,null,0,0,0,0,0,0,0,0,0,0,0,0,0,0,0,0,0,0,0,0,0,0,0,0,0,0,0,0,0,0,0,0,0,0,0,0,0,0,0,0,0,0,0,0,0]
[null,null,{"$f":"Asset11","v":"Low Voltage Services"},null,null,null,13.645155561247948,14.688862144484602,15.753446430270277,16.85633975662553,17.997040870486298,19.188324258729164,19.188324258729164,19.188324258729164,19.188324258729164,19.188324258729164,19.188324258729164,19.188324258729164,19.188324258729164,19.188324258729164,19.188324258729164,19.188324258729164,5.5431686974812155,5.5431686974812155,5.5431686974812155,5.5431686974812155,5.5431686974812155,5.5431686974812155,5.5431686974812155,5.5431686974812155,5.5431686974812155,5.5431686974812155,5.5431686974812155,5.5431686974812155,5.5431686974812155,5.5431686974812155,5.5431686974812155,5.5431686974812155,5.5431686974812155,5.5431686974812155,5.5431686974812155,5.5431686974812155,4.4994621142445546,3.4348778284588866,2.3319845021036407,1.1912833882428739,2.8421709430404007E-14,0,0,0,0,0,0,0,0,0,0,0,0,0,0]
[null,{"$f":"C271","v":"Metering"},null,"Initial Asset Base",null,null,4.8091661490940689,4.8091661490940689,4.8091661490940689,4.8091661490940689,4.8091661490940689,4.8091661490940689,4.8091661490940689,4.8091661490940689,4.8091661490940689,4.8091661490940689,4.8091661490940689,4.8091661490940689,3.0180260817896807,2.2148531178572748,2.2148531178572619,0.92784921358283978,0,0,0,0,0,0,0,0,0,0,0,0,0,0,0,0,0,0,0,0,0,0,0,0,0,0,0,0,0,0,0,0,0,0,0,0,0,0,0]
[null,null,null,"Capex in year",0]
[null,null,null,null,1,null,null,9.172959950828323E-2,9.172959950828323E-2,9.172959950828323E-2,9.172959950828323E-2,9.172959950828323E-2,9.172959950828323E-2,9.172959950828323E-2,9.172959950828323E-2,9.172959950828323E-2,9.172959950828323E-2,9.172959950828323E-2,9.172959950828323E-2,9.172959950828323E-2,9.172959950828323E-2,9.172959950828323E-2,9.172959950828323E-2,9.172959950828323E-2,9.172959950828323E-2,9.172959950828323E-2,9.172959950828323E-2,9.172959950828323E-2,9.172959950828323E-2,9.172959950828323E-2,9.172959950828323E-2,9.172959950828323E-2,-4.4408920985006262E-16,0,0,0,0,0,0,0,0,0,0,0,0,0,0,0,0,0,0,0,0,0,0,0,0,0,0,0,0]
[null,null,null,null,2,null,null,null,9.5142946614155413E-2,9.5142946614155413E-2,9.5142946614155413E-2,9.5142946614155413E-2,9.5142946614155413E-2,9.5142946614155413E-2,9.5142946614155413E-2,9.5142946614155413E-2,9.5142946614155413E-2,9.5142946614155413E-2,9.5142946614155413E-2,9.5142946614155413E-2,9.5142946614155413E-2,9.5142946614155413E-2,9.5142946614155413E-2,9.5142946614155413E-2,9.5142946614155413E-2,9.5142946614155413E-2,9.5142946614155413E-2,9.5142946614155413E-2,9.5142946614155413E-2,9.5142946614155413E-2,9.5142946614155413E-2,9.5142946614155413E-2,9.5142946614155413E-2,0,0,0,0,0,0,0,0,0,0,0,0,0,0,0,0,0,0,0,0,0,0,0,0,0,0,0,0]
[null,null,null,null,3,null,null,null,null,9.8336796561150255E-2,9.8336796561150255E-2,9.8336796561150255E-2,9.8336796561150255E-2,9.8336796561150255E-2,9.8336796561150255E-2,9.8336796561150255E-2,9.8336796561150255E-2,9.8336796561150255E-2,9.8336796561150255E-2,9.8336796561150255E-2,9.8336796561150255E-2,9.8336796561150255E-2,9.8336796561150255E-2,9.8336796561150255E-2,9.8336796561150255E-2,9.8336796561150255E-2,9.8336796561150255E-2,9.8336796561150255E-2,9.8336796561150255E-2,9.8336796561150255E-2,9.8336796561150255E-2,9.8336796561150255E-2,9.8336796561150255E-2,9.8336796561150255E-2,-8.8817841970012523E-16,0,0,0,0,0,0,0,0,0,0,0,0,0,0,0,0,0,0,0,0,0,0,0,0,0,0]
[null,null,null,null,4,null,null,null,null,null,0.1003840062865215,0.1003840062865215,0.1003840062865215,0.1003840062865215,0.1003840062865215,0.1003840062865215,0.1003840062865215,0.1003840062865215,0.1003840062865215,0.1003840062865215,0.1003840062865215,0.1003840062865215,0.1003840062865215,0.1003840062865215,0.1003840062865215,0.1003840062865215,0.1003840062865215,0.1003840062865215,0.1003840062865215,0.1003840062865215,0.1003840062865215,0.1003840062865215,0.1003840062865215,0.1003840062865215,0.1003840062865215,-1.3322676295501878E-15,0,0,0,0,0,0,0,0,0,0,0,0,0,0,0,0,0,0,0,0,0,0,0,0,0]
[null,null,null,null,5,null,null,null,null,null,null,0.10428762169921139,0.10428762169921139,0.10428762169921139,0.10428762169921139,0.10428762169921139,0.10428762169921139,0.10428762169921139,0.10428762169921139,0.10428762169921139,0.10428762169921139,0.10428762169921139,0.10428762169921139,0.10428762169921139,0.10428762169921139,0.10428762169921139,0.10428762169921139,0.10428762169921139,0.10428762169921139,0.10428762169921139,0.10428762169921139,0.10428762169921139,0.10428762169921139,0.10428762169921139,0.10428762169921139,0.10428762169921139,-1.3322676295501878E-15,0,0,0,0,0,0,0,0,0,0,0,0,0,0,0,0,0,0,0,0,0,0,0,0]
[null,null,null,null,6,null,null,null,null,null,null,null,0,0,0,0,0,0,0,0,0,0,0,0,0,0,0,0,0,0,0,0,0,0,0,0,0,0,0,0,0,0,0,0,0,0,0,0,0,0,0,0,0,0,0,0,0,0,0,0,0]
[null,null,null,null,7,null,null,null,null,null,null,null,null,0,0,0,0,0,0,0,0,0,0,0,0,0,0,0,0,0,0,0,0,0,0,0,0,0,0,0,0,0,0,0,0,0,0,0,0,0,0,0,0,0,0,0,0,0,0,0,0]
[null,null,null,null,8,null,null,null,null,null,null,null,null,null,0,0,0,0,0,0,0,0,0,0,0,0,0,0,0,0,0,0,0,0,0,0,0,0,0,0,0,0,0,0,0,0,0,0,0,0,0,0,0,0,0,0,0,0,0,0,0]
[null,null,null,null,9,null,null,null,null,null,null,null,null,null,null,0,0,0,0,0,0,0,0,0,0,0,0,0,0,0,0,0,0,0,0,0,0,0,0,0,0,0,0,0,0,0,0,0,0,0,0,0,0,0,0,0,0,0,0,0,0]
[null,null,null,null,10,null,null,null,null,null,null,null,null,null,null,null,0,0,0,0,0,0,0,0,0,0,0,0,0,0,0,0,0,0,0,0,0,0,0,0,0,0,0,0,0,0,0,0,0,0,0,0,0,0,0,0,0,0,0,0,0]
[null,null,{"$f":"Asset12","v":"Metering"},null,null,null,4.8091661490940689,4.9008957486023519,4.996038695216507,5.0943754917776571,5.1947594980641787,5.2990471197633902,5.2990471197633902,5.2990471197633902,5.2990471197633902,5.2990471197633902,5.2990471197633902,5.2990471197633902,3.5079070524590028,2.7047340885265969,2.704734088526584,1.4177301842521617,0.48988097066932179,0.48988097066932179,0.48988097066932179,0.48988097066932179,0.48988097066932179,0.48988097066932179,0.48988097066932179,0.48988097066932179,0.48988097066932179,0.48988097066932179,0.3981513711610381,0.30300842454688315,0.20467162798573202,0.10428762169921006,-1.3322676295501878E-15,0,0,0,0,0,0,0,0,0,0,0,0,0,0,0,0,0,0,0,0,0,0,0,0]
[null,{"$f":"C284","v":"Communications – Pilot Wires"},null,"Initial Asset Base",null,null,9.2315587677447208,9.2315587677447208,9.2315587677447208,9.2315587677447208,9.2315587677447208,9.2315587677447208,9.2315587677447208,9.2315587677447208,9.2315587677447208,9.2315587677447208,9.2315587677447208,9.2315587677447208,9.2315587677447208,9.2315587677447208,9.2315587677447208,9.2315587677447208,0,0,0,0,0,0,0,0,0,0,0,0,0,0,0,0,0,0,0,0,0,0,0,0,0,0,0,0,0,0,0,0,0,0,0,0,0,0,0]
[null,null,null,"Capex in year",0]
[null,null,null,null,1,null,null,0.38391241723844705,0.38391241723844705,0.38391241723844705,0.38391241723844705,0.38391241723844705,0.38391241723844705,0.38391241723844705,0.38391241723844705,0.38391241723844705,0.38391241723844705,0.38391241723844705,0.38391241723844705,0.38391241723844705,0.38391241723844705,0.38391241723844705,0.38391241723844705,0.38391241723844705,0.38391241723844705,0.38391241723844705,0.38391241723844705,0.38391241723844705,0.38391241723844705,0.38391241723844705,0.38391241723844705,0.38391241723844705,0.38391241723844705,0.38391241723844705,0.38391241723844705,0.38391241723844705,0.38391241723844705,0.38391241723844705,0.38391241723844705,0.38391241723844705,0.38391241723844705,0.38391241723844705,1.7763568394002505E-15,0,0,0,0,0,0,0,0,0,0,0,0,0,0,0,0,0,0]
[null,null,null,null,2,null,null,null,0.39338402902754915,0.39338402902754915,0.39338402902754915,0.39338402902754915,0.39338402902754915,0.39338402902754915,0.39338402902754915,0.39338402902754915,0.39338402902754915,0.39338402902754915,0.39338402902754915,0.39338402902754915,0.39338402902754915,0.39338402902754915,0.39338402902754915,0.39338402902754915,0.39338402902754915,0.39338402902754915,0.39338402902754915,0.39338402902754915,0.39338402902754915,0.39338402902754915,0.39338402902754915,0.39338402902754915,0.39338402902754915,0.39338402902754915,0.39338402902754915,0.39338402902754915,0.39338402902754915,0.39338402902754915,0.39338402902754915,0.39338402902754915,0.39338402902754915,0.39338402902754915,0.39338402902754915,-5.3290705182007514E-15,0,0,0,0,0,0,0,0,0,0,0,0,0,0,0,0,0]
[null,null,null,null,3,null,null,null,null,0.40727896972656114,0.40727896972656114,0.40727896972656114,0.40727896972656114,0.40727896972656114,0.40727896972656114,0.40727896972656114,0.40727896972656114,0.40727896972656114,0.40727896972656114,0.40727896972656114,0.40727896972656114,0.40727896972656114,0.40727896972656114,0.40727896972656114,0.40727896972656114,0.40727896972656114,0.40727896972656114,0.40727896972656114,0.40727896972656114,0.40727896972656114,0.40727896972656114,0.40727896972656114,0.40727896972656114,0.40727896972656114,0.40727896972656114,0.40727896972656114,0.40727896972656114,0.40727896972656114,0.40727896972656114,0.40727896972656114,0.40727896972656114,0.40727896972656114,0.40727896972656114,0.40727896972656114,-1.2434497875801753E-14,0,0,0,0,0,0,0,0,0,0,0,0,0,0,0,0]
[null,null,null,null,4,null,null,null,null,null,0.41973773406680248,0.41973773406680248,0.41973773406680248,0.41973773406680248,0.41973773406680248,0.41973773406680248,0.41973773406680248,0.41973773406680248,0.41973773406680248,0.41973773406680248,0.41973773406680248,0.41973773406680248,0.41973773406680248,0.41973773406680248,0.41973773406680248,0.41973773406680248,0.41973773406680248,0.41973773406680248,0.41973773406680248,0.41973773406680248,0.41973773406680248,0.41973773406680248,0.41973773406680248,0.41973773406680248,0.41973773406680248,0.41973773406680248,0.41973773406680248,0.41973773406680248,0.41973773406680248,0.41973773406680248,0.41973773406680248,0.41973773406680248,0.41973773406680248,0.41973773406680248,0.41973773406680248,-1.2434497875801753E-14,0,0,0,0,0,0,0,0,0,0,0,0,0,0,0]
[null,null,null,null,5,null,null,null,null,null,null,0.43772837470731157,0.43772837470731157,0.43772837470731157,0.43772837470731157,0.43772837470731157,0.43772837470731157,0.43772837470731157,0.43772837470731157,0.43772837470731157,0.43772837470731157,0.43772837470731157,0.43772837470731157,0.43772837470731157,0.43772837470731157,0.43772837470731157,0.43772837470731157,0.43772837470731157,0.43772837470731157,0.43772837470731157,0.43772837470731157,0.43772837470731157,0.43772837470731157,0.43772837470731157,0.43772837470731157,0.43772837470731157,0.43772837470731157,0.43772837470731157,0.43772837470731157,0.43772837470731157,0.43772837470731157,0.43772837470731157,0.43772837470731157,0.43772837470731157,0.43772837470731157,0.43772837470731157,-8.8817841970012523E-15,0,0,0,0,0,0,0,0,0,0,0,0,0,0]
[null,null,null,null,6,null,null,null,null,null,null,null,0,0,0,0,0,0,0,0,0,0,0,0,0,0,0,0,0,0,0,0,0,0,0,0,0,0,0,0,0,0,0,0,0,0,0,0,0,0,0,0,0,0,0,0,0,0,0,0,0]
[null,null,null,null,7,null,null,null,null,null,null,null,null,0,0,0,0,0,0,0,0,0,0,0,0,0,0,0,0,0,0,0,0,0,0,0,0,0,0,0,0,0,0,0,0,0,0,0,0,0,0,0,0,0,0,0,0,0,0,0,0]
[null,null,null,null,8,null,null,null,null,null,null,null,null,null,0,0,0,0,0,0,0,0,0,0,0,0,0,0,0,0,0,0,0,0,0,0,0,0,0,0,0,0,0,0,0,0,0,0,0,0,0,0,0,0,0,0,0,0,0,0,0]
[null,null,null,null,9,null,null,null,null,null,null,null,null,null,null,0,0,0,0,0,0,0,0,0,0,0,0,0,0,0,0,0,0,0,0,0,0,0,0,0,0,0,0,0,0,0,0,0,0,0,0,0,0,0,0,0,0,0,0,0,0]
[null,null,null,null,10,null,null,null,null,null,null,null,null,null,null,null,0,0,0,0,0,0,0,0,0,0,0,0,0,0,0,0,0,0,0,0,0,0,0,0,0,0,0,0,0,0,0,0,0,0,0,0,0,0,0,0,0,0,0,0,0]
[null,null,{"$f":"Asset13","v":"Communications – Pilot Wires"},null,null,null,9.2315587677447208,9.6154711849831678,10.008855214010717,10.416134183737279,10.835871917804081,11.273600292511393,11.273600292511393,11.273600292511393,11.273600292511393,11.273600292511393,11.273600292511393,11.273600292511393,11.273600292511393,11.273600292511393,11.273600292511393,11.273600292511393,2.0420415247666712,2.0420415247666712,2.0420415247666712,2.0420415247666712,2.0420415247666712,2.0420415247666712,2.0420415247666712,2.0420415247666712,2.0420415247666712,2.0420415247666712,2.0420415247666712,2.0420415247666712,2.0420415247666712,2.0420415247666712,2.0420415247666712,2.0420415247666712,2.0420415247666712,2.0420415247666712,2.0420415247666712,2.0420415247666712,1.6581291075282261,1.2647450785006698,0.85746610877410157,0.43772837470729914,-8.8817841970012523E-15,0,0,0,0,0,0,0,0,0,0,0,0,0,0]
[null,{"$f":"C297","v":"Land & Easements (System) - combined"},null,"Initial Asset Base",null,null,0,0,0,0,0,0,0,0,0,0,0,0,0,0,0,0,0,0,0,0,0,0,0,0,0,0,0,0,0,0,0,0,0,0,0,0,0,0,0,0,0,0,0,0,0,0,0,0,0,0,0,0,0,0,0]
[null,null,null,"Capex in year",0]
[null,null,null,null,1,null,null,"n/a","n/a","n/a","n/a","n/a","n/a","n/a","n/a","n/a","n/a","n/a","n/a","n/a","n/a","n/a","n/a","n/a","n/a","n/a","n/a","n/a","n/a","n/a","n/a","n/a","n/a","n/a","n/a","n/a","n/a","n/a","n/a","n/a","n/a","n/a","n/a","n/a","n/a","n/a","n/a","n/a","n/a","n/a","n/a","n/a","n/a","n/a","n/a","n/a","n/a","n/a","n/a","n/a","n/a"]
[null,null,null,null,2,null,null,null,"n/a","n/a","n/a","n/a","n/a","n/a","n/a","n/a","n/a","n/a","n/a","n/a","n/a","n/a","n/a","n/a","n/a","n/a","n/a","n/a","n/a","n/a","n/a","n/a","n/a","n/a","n/a","n/a","n/a","n/a","n/a","n/a","n/a","n/a","n/a","n/a","n/a","n/a","n/a","n/a","n/a","n/a","n/a","n/a","n/a","n/a","n/a","n/a","n/a","n/a","n/a","n/a","n/a"]
[null,null,null,null,3,null,null,null,null,"n/a","n/a","n/a","n/a","n/a","n/a","n/a","n/a","n/a","n/a","n/a","n/a","n/a","n/a","n/a","n/a","n/a","n/a","n/a","n/a","n/a","n/a","n/a","n/a","n/a","n/a","n/a","n/a","n/a","n/a","n/a","n/a","n/a","n/a","n/a","n/a","n/a","n/a","n/a","n/a","n/a","n/a","n/a","n/a","n/a","n/a","n/a","n/a","n/a","n/a","n/a","n/a"]
[null,null,null,null,4,null,null,null,null,null,"n/a","n/a","n/a","n/a","n/a","n/a","n/a","n/a","n/a","n/a","n/a","n/a","n/a","n/a","n/a","n/a","n/a","n/a","n/a","n/a","n/a","n/a","n/a","n/a","n/a","n/a","n/a","n/a","n/a","n/a","n/a","n/a","n/a","n/a","n/a","n/a","n/a","n/a","n/a","n/a","n/a","n/a","n/a","n/a","n/a","n/a","n/a","n/a","n/a","n/a","n/a"]
[null,null,null,null,5,null,null,null,null,null,null,"n/a","n/a","n/a","n/a","n/a","n/a","n/a","n/a","n/a","n/a","n/a","n/a","n/a","n/a","n/a","n/a","n/a","n/a","n/a","n/a","n/a","n/a","n/a","n/a","n/a","n/a","n/a","n/a","n/a","n/a","n/a","n/a","n/a","n/a","n/a","n/a","n/a","n/a","n/a","n/a","n/a","n/a","n/a","n/a","n/a","n/a","n/a","n/a","n/a","n/a"]
[null,null,null,null,6,null,null,null,null,null,null,null,"n/a","n/a","n/a","n/a","n/a","n/a","n/a","n/a","n/a","n/a","n/a","n/a","n/a","n/a","n/a","n/a","n/a","n/a","n/a","n/a","n/a","n/a","n/a","n/a","n/a","n/a","n/a","n/a","n/a","n/a","n/a","n/a","n/a","n/a","n/a","n/a","n/a","n/a","n/a","n/a","n/a","n/a","n/a","n/a","n/a","n/a","n/a","n/a","n/a"]
[null,null,null,null,7,null,null,null,null,null,null,null,null,"n/a","n/a","n/a","n/a","n/a","n/a","n/a","n/a","n/a","n/a","n/a","n/a","n/a","n/a","n/a","n/a","n/a","n/a","n/a","n/a","n/a","n/a","n/a","n/a","n/a","n/a","n/a","n/a","n/a","n/a","n/a","n/a","n/a","n/a","n/a","n/a","n/a","n/a","n/a","n/a","n/a","n/a","n/a","n/a","n/a","n/a","n/a","n/a"]
[null,null,null,null,8,null,null,null,null,null,null,null,null,null,"n/a","n/a","n/a","n/a","n/a","n/a","n/a","n/a","n/a","n/a","n/a","n/a","n/a","n/a","n/a","n/a","n/a","n/a","n/a","n/a","n/a","n/a","n/a","n/a","n/a","n/a","n/a","n/a","n/a","n/a","n/a","n/a","n/a","n/a","n/a","n/a","n/a","n/a","n/a","n/a","n/a","n/a","n/a","n/a","n/a","n/a","n/a"]
[null,null,null,null,9,null,null,null,null,null,null,null,null,null,null,"n/a","n/a","n/a","n/a","n/a","n/a","n/a","n/a","n/a","n/a","n/a","n/a","n/a","n/a","n/a","n/a","n/a","n/a","n/a","n/a","n/a","n/a","n/a","n/a","n/a","n/a","n/a","n/a","n/a","n/a","n/a","n/a","n/a","n/a","n/a","n/a","n/a","n/a","n/a","n/a","n/a","n/a","n/a","n/a","n/a","n/a"]
[null,null,null,null,10,null,null,null,null,null,null,null,null,null,null,null,"n/a","n/a","n/a","n/a","n/a","n/a","n/a","n/a","n/a","n/a","n/a","n/a","n/a","n/a","n/a","n/a","n/a","n/a","n/a","n/a","n/a","n/a","n/a","n/a","n/a","n/a","n/a","n/a","n/a","n/a","n/a","n/a","n/a","n/a","n/a","n/a","n/a","n/a","n/a","n/a","n/a","n/a","n/a","n/a","n/a"]
[null,null,{"$f":"Asset14","v":"Land & Easements (System) - combined"},null,null,null,0,0,0,0,0,0,0,0,0,0,0,0,0,0,0,0,0,0,0,0,0,0,0,0,0,0,0,0,0,0,0,0,0,0,0,0,0,0,0,0,0,0,0,0,0,0,0,0,0,0,0,0,0,0,0]
[null,{"$f":"C310","v":"Land Improvements"},null,"Initial Asset Base",null,null,4.9034374995175547,4.9034374995175547,4.9034374995175547,4.9034374995175547,4.9034374995175547,4.9034374995175547,4.9034374995175547,4.9034374995175547,4.9034374995175547,4.9034374995175547,4.9034374995175547,4.9034374995175547,4.9034374995175547,4.9034374995175547,4.9034374995175547,4.9034374995175547,0,0,0,0,0,0,0,0,0,0,0,0,0,0,0,0,0,0,0,0,0,0,0,0,0,0,0,0,0,0,0,0,0,0,0,0,0,0,0]
[null,null,null,"Capex in year",0]
[null,null,null,null,1,null,null,1.1845316111811265E-2,1.1845316111811265E-2,1.1845316111811265E-2,1.1845316111811265E-2,1.1845316111811265E-2,1.1845316111811265E-2,1.1845316111811265E-2,1.1845316111811265E-2,1.1845316111811265E-2,1.1845316111811265E-2,1.1845316111811265E-2,1.1845316111811265E-2,1.1845316111811265E-2,1.1845316111811265E-2,1.1845316111811265E-2,1.1845316111811265E-2,1.1845316111811265E-2,1.1845316111811265E-2,1.1845316111811265E-2,1.1845316111811265E-2,1.1845316111811265E-2,1.1845316111811265E-2,1.1845316111811265E-2,1.1845316111811265E-2,1.1845316111811265E-2,1.1845316111811265E-2,1.1845316111811265E-2,1.1845316111811265E-2,1.1845316111811265E-2,1.1845316111811265E-2,1.1845316111811265E-2,1.1845316111811265E-2,1.1845316111811265E-2,1.1845316111811265E-2,1.1845316111811265E-2,1.1845316111811265E-2,1.1845316111811265E-2,1.1845316111811265E-2,1.1845316111811265E-2,1.1845316111811265E-2,-3.3306690738754696E-16,0,0,0,0,0,0,0,0,0,0,0,0,0]
[null,null,null,null,2,null,null,null,1.2298771295486791E-2,1.2298771295486791E-2,1.2298771295486791E-2,1.2298771295486791E-2,1.2298771295486791E-2,1.2298771295486791E-2,1.2298771295486791E-2,1.2298771295486791E-2,1.2298771295486791E-2,1.2298771295486791E-2,1.2298771295486791E-2,1.2298771295486791E-2,1.2298771295486791E-2,1.2298771295486791E-2,1.2298771295486791E-2,1.2298771295486791E-2,1.2298771295486791E-2,1.2298771295486791E-2,1.2298771295486791E-2,1.2298771295486791E-2,1.2298771295486791E-2,1.2298771295486791E-2,1.2298771295486791E-2,1.2298771295486791E-2,1.2298771295486791E-2,1.2298771295486791E-2,1.2298771295486791E-2,1.2298771295486791E-2,1.2298771295486791E-2,1.2298771295486791E-2,1.2298771295486791E-2,1.2298771295486791E-2,1.2298771295486791E-2,1.2298771295486791E-2,1.2298771295486791E-2,1.2298771295486791E-2,1.2298771295486791E-2,1.2298771295486791E-2,1.2298771295486791E-2,1.2298771295486791E-2,1.1102230246251565E-16,0,0,0,0,0,0,0,0,0,0,0,0]
[null,null,null,null,3,null,null,null,null,1.270981240934721E-2,1.270981240934721E-2,1.270981240934721E-2,1.270981240934721E-2,1.270981240934721E-2,1.270981240934721E-2,1.270981240934721E-2,1.270981240934721E-2,1.270981240934721E-2,1.270981240934721E-2,1.270981240934721E-2,1.270981240934721E-2,1.270981240934721E-2,1.270981240934721E-2,1.270981240934721E-2,1.270981240934721E-2,1.270981240934721E-2,1.270981240934721E-2,1.270981240934721E-2,1.270981240934721E-2,1.270981240934721E-2,1.270981240934721E-2,1.270981240934721E-2,1.270981240934721E-2,1.270981240934721E-2,1.270981240934721E-2,1.270981240934721E-2,1.270981240934721E-2,1.270981240934721E-2,1.270981240934721E-2,1.270981240934721E-2,1.270981240934721E-2,1.270981240934721E-2,1.270981240934721E-2,1.270981240934721E-2,1.270981240934721E-2,1.270981240934721E-2,1.270981240934721E-2,1.270981240934721E-2,1.270981240934721E-2,0,0,0,0,0,0,0,0,0,0,0,0]
[null,null,null,null,4,null,null,null,null,null,1.2963927458663007E-2,1.2963927458663007E-2,1.2963927458663007E-2,1.2963927458663007E-2,1.2963927458663007E-2,1.2963927458663007E-2,1.2963927458663007E-2,1.2963927458663007E-2,1.2963927458663007E-2,1.2963927458663007E-2,1.2963927458663007E-2,1.2963927458663007E-2,1.2963927458663007E-2,1.2963927458663007E-2,1.2963927458663007E-2,1.2963927458663007E-2,1.2963927458663007E-2,1.2963927458663007E-2,1.2963927458663007E-2,1.2963927458663007E-2,1.2963927458663007E-2,1.2963927458663007E-2,1.2963927458663007E-2,1.2963927458663007E-2,1.2963927458663007E-2,1.2963927458663007E-2,1.2963927458663007E-2,1.2963927458663007E-2,1.2963927458663007E-2,1.2963927458663007E-2,1.2963927458663007E-2,1.2963927458663007E-2,1.2963927458663007E-2,1.2963927458663007E-2,1.2963927458663007E-2,1.2963927458663007E-2,1.2963927458663007E-2,1.2963927458663007E-2,1.2963927458663007E-2,1.2963927458663007E-2,4.4408920985006262E-16,0,0,0,0,0,0,0,0,0,0]
[null,null,null,null,5,null,null,null,null,null,null,1.3463659283230203E-2,1.3463659283230203E-2,1.3463659283230203E-2,1.3463659283230203E-2,1.3463659283230203E-2,1.3463659283230203E-2,1.3463659283230203E-2,1.3463659283230203E-2,1.3463659283230203E-2,1.3463659283230203E-2,1.3463659283230203E-2,1.3463659283230203E-2,1.3463659283230203E-2,1.3463659283230203E-2,1.3463659283230203E-2,1.3463659283230203E-2,1.3463659283230203E-2,1.3463659283230203E-2,1.3463659283230203E-2,1.3463659283230203E-2,1.3463659283230203E-2,1.3463659283230203E-2,1.3463659283230203E-2,1.3463659283230203E-2,1.3463659283230203E-2,1.3463659283230203E-2,1.3463659283230203E-2,1.3463659283230203E-2,1.3463659283230203E-2,1.3463659283230203E-2,1.3463659283230203E-2,1.3463659283230203E-2,1.3463659283230203E-2,1.3463659283230203E-2,1.3463659283230203E-2,1.3463659283230203E-2,1.3463659283230203E-2,1.3463659283230203E-2,1.3463659283230203E-2,1.3463659283230203E-2,3.3306690738754696E-16,0,0,0,0,0,0,0,0,0]
[null,null,null,null,6,null,null,null,null,null,null,null,0,0,0,0,0,0,0,0,0,0,0,0,0,0,0,0,0,0,0,0,0,0,0,0,0,0,0,0,0,0,0,0,0,0,0,0,0,0,0,0,0,0,0,0,0,0,0,0,0]
[null,null,null,null,7,null,null,null,null,null,null,null,null,0,0,0,0,0,0,0,0,0,0,0,0,0,0,0,0,0,0,0,0,0,0,0,0,0,0,0,0,0,0,0,0,0,0,0,0,0,0,0,0,0,0,0,0,0,0,0,0]
[null,null,null,null,8,null,null,null,null,null,null,null,null,null,0,0,0,0,0,0,0,0,0,0,0,0,0,0,0,0,0,0,0,0,0,0,0,0,0,0,0,0,0,0,0,0,0,0,0,0,0,0,0,0,0,0,0,0,0,0,0]
[null,null,null,null,9,null,null,null,null,null,null,null,null,null,null,0,0,0,0,0,0,0,0,0,0,0,0,0,0,0,0,0,0,0,0,0,0,0,0,0,0,0,0,0,0,0,0,0,0,0,0,0,0,0,0,0,0,0,0,0,0]
[null,null,null,null,10,null,null,null,null,null,null,null,null,null,null,null,0,0,0,0,0,0,0,0,0,0,0,0,0,0,0,0,0,0,0,0,0,0,0,0,0,0,0,0,0,0,0,0,0,0,0,0,0,0,0,0,0,0,0,0,0]
[null,null,{"$f":"Asset15","v":"Land Improvements"},null,null,null,4.9034374995175547,4.9152828156293662,4.9275815869248527,4.9402913993341997,4.9532553267928625,4.966718986076093,4.966718986076093,4.966718986076093,4.966718986076093,4.966718986076093,4.966718986076093,4.966718986076093,4.966718986076093,4.966718986076093,4.966718986076093,4.966718986076093,6.3281486558538477E-2,6.3281486558538477E-2,6.3281486558538477E-2,6.3281486558538477E-2,6.3281486558538477E-2,6.3281486558538477E-2,6.3281486558538477E-2,6.3281486558538477E-2,6.3281486558538477E-2,6.3281486558538477E-2,6.3281486558538477E-2,6.3281486558538477E-2,6.3281486558538477E-2,6.3281486558538477E-2,6.3281486558538477E-2,6.3281486558538477E-2,6.3281486558538477E-2,6.3281486558538477E-2,6.3281486558538477E-2,6.3281486558538477E-2,6.3281486558538477E-2,6.3281486558538477E-2,6.3281486558538477E-2,6.3281486558538477E-2,6.3281486558538477E-2,5.1436170446726881E-2,3.913739915124053E-2,2.6427586741893209E-2,1.3463659283230647E-2,3.3306690738754696E-16,0,0,0,0,0,0,0,0,0]
[null,{"$f":"C323","v":"Control Centre - SCADA"},null,"Initial Asset Base",null,null,7.3661033075177462,7.1745537036847855,4.1246583543166233,3.5204245225743782,2.7067034161646508,1.3820662402312347,0.71098907141679124,0,0,0,0,0,0,0,0,0,0,0,0,0,0,0,0,0,0,0,0,0,0,0,0,0,0,0,0,0,0,0,0,0,0,0,0,0,0,0,0,0,0,0,0,0,0,0,0]
[null,null,null,"Capex in year",0]
[null,null,null,null,1,null,null,0.62229742446709246,0.62229742446709246,0.62229742446709246,0.62229742446709246,0.62229742446709246,0.62229742446709246,0.62229742446709246,8.8817841970012523E-16,0,0,0,0,0,0,0,0,0,0,0,0,0,0,0,0,0,0,0,0,0,0,0,0,0,0,0,0,0,0,0,0,0,0,0,0,0,0,0,0,0,0,0,0,0,0]
[null,null,null,null,2,null,null,null,0.64524314289776719,0.64524314289776719,0.64524314289776719,0.64524314289776719,0.64524314289776719,0.64524314289776719,0.64524314289776719,8.8817841970012523E-16,0,0,0,0,0,0,0,0,0,0,0,0,0,0,0,0,0,0,0,0,0,0,0,0,0,0,0,0,0,0,0,0,0,0,0,0,0,0,0,0,0,0,0,0,0]
[null,null,null,null,3,null,null,null,null,0.6669334417836108,0.6669334417836108,0.6669334417836108,0.6669334417836108,0.6669334417836108,0.6669334417836108,0.6669334417836108,8.8817841970012523E-16,0,0,0,0,0,0,0,0,0,0,0,0,0,0,0,0,0,0,0,0,0,0,0,0,0,0,0,0,0,0,0,0,0,0,0,0,0,0,0,0,0,0,0,0]
[null,null,null,null,4,null,null,null,null,null,0.68099197511971621,0.68099197511971621,0.68099197511971621,0.68099197511971621,0.68099197511971621,0.68099197511971621,0.68099197511971621,8.8817841970012523E-16,0,0,0,0,0,0,0,0,0,0,0,0,0,0,0,0,0,0,0,0,0,0,0,0,0,0,0,0,0,0,0,0,0,0,0,0,0,0,0,0,0,0,0]
[null,null,null,null,5,null,null,null,null,null,null,0.70754656636074331,0.70754656636074331,0.70754656636074331,0.70754656636074331,0.70754656636074331,0.70754656636074331,0.70754656636074331,8.8817841970012523E-16,0,0,0,0,0,0,0,0,0,0,0,0,0,0,0,0,0,0,0,0,0,0,0,0,0,0,0,0,0,0,0,0,0,0,0,0,0,0,0,0,0,0]
[null,null,null,null,6,null,null,null,null,null,null,null,0,0,0,0,0,0,0,0,0,0,0,0,0,0,0,0,0,0,0,0,0,0,0,0,0,0,0,0,0,0,0,0,0,0,0,0,0,0,0,0,0,0,0,0,0,0,0,0,0]
[null,null,null,null,7,null,null,null,null,null,null,null,null,0,0,0,0,0,0,0,0,0,0,0,0,0,0,0,0,0,0,0,0,0,0,0,0,0,0,0,0,0,0,0,0,0,0,0,0,0,0,0,0,0,0,0,0,0,0,0,0]
[null,null,null,null,8,null,null,null,null,null,null,null,null,null,0,0,0,0,0,0,0,0,0,0,0,0,0,0,0,0,0,0,0,0,0,0,0,0,0,0,0,0,0,0,0,0,0,0,0,0,0,0,0,0,0,0,0,0,0,0,0]
[null,null,null,null,9,null,null,null,null,null,null,null,null,null,null,0,0,0,0,0,0,0,0,0,0,0,0,0,0,0,0,0,0,0,0,0,0,0,0,0,0,0,0,0,0,0,0,0,0,0,0,0,0,0,0,0,0,0,0,0,0]
[null,null,null,null,10,null,null,null,null,null,null,null,null,null,null,null,0,0,0,0,0,0,0,0,0,0,0,0,0,0,0,0,0,0,0,0,0,0,0,0,0,0,0,0,0,0,0,0,0,0,0,0,0,0,0,0,0,0,0,0,0]
[null,null,{"$f":"Asset16","v":"Control Centre - SCADA"},null,null,null,7.3661033075177462,7.7968511281518778,5.3921989216814827,5.4548985317228489,5.3221694004328377,4.7050787908601643,4.0340016220457207,3.3230125506289299,2.7007151261618385,2.0554719832640713,1.3885385414804605,0.7075465663607442,8.8817841970012523E-16,0,0,0,0,0,0,0,0,0,0,0,0,0,0,0,0,0,0,0,0,0,0,0,0,0,0,0,0,0,0,0,0,0,0,0,0,0,0,0,0,0,0]
[null,{"$f":"C336","v":"Other Equipment"},null,"Initial Asset Base",null,null,3.7315021508326454E-2,3.7315021508326454E-2,3.7315021508326454E-2,3.7315021508326454E-2,3.7315021508326454E-2,3.7315021508326454E-2,3.7315021508326454E-2,3.7315021508326454E-2,3.7315021508326454E-2,3.7315021508326454E-2,3.7315021508326454E-2,3.7315021508326454E-2,3.7315021508326454E-2,3.7315021508326454E-2,3.7315021508326454E-2,3.7315021508326454E-2,0,0,0,0,0,0,0,0,0,0,0,0,0,0,0,0,0,0,0,0,0,0,0,0,0,0,0,0,0,0,0,0,0,0,0,0,0,0,0]
[null,null,null,"Capex in year",0]
[null,null,null,null,1,null,null,0,0,0,0,0,0,0,0,0,0,0,0,0,0,0,0,0,0,0,0,0,0,0,0,0,0,0,0,0,0,0,0,0,0,0,0,0,0,0,0,0,0,0,0,0,0,0,0,0,0,0,0,0,0]
[null,null,null,null,2,null,null,null,0,0,0,0,0,0,0,0,0,0,0,0,0,0,0,0,0,0,0,0,0,0,0,0,0,0,0,0,0,0,0,0,0,0,0,0,0,0,0,0,0,0,0,0,0,0,0,0,0,0,0,0,0]
[null,null,null,null,3,null,null,null,null,0,0,0,0,0,0,0,0,0,0,0,0,0,0,0,0,0,0,0,0,0,0,0,0,0,0,0,0,0,0,0,0,0,0,0,0,0,0,0,0,0,0,0,0,0,0,0,0,0,0,0,0]
[null,null,null,null,4,null,null,null,null,null,0,0,0,0,0,0,0,0,0,0,0,0,0,0,0,0,0,0,0,0,0,0,0,0,0,0,0,0,0,0,0,0,0,0,0,0,0,0,0,0,0,0,0,0,0,0,0,0,0,0,0]
[null,null,null,null,5,null,null,null,null,null,null,0,0,0,0,0,0,0,0,0,0,0,0,0,0,0,0,0,0,0,0,0,0,0,0,0,0,0,0,0,0,0,0,0,0,0,0,0,0,0,0,0,0,0,0,0,0,0,0,0,0]
[null,null,null,null,6,null,null,null,null,null,null,null,0,0,0,0,0,0,0,0,0,0,0,0,0,0,0,0,0,0,0,0,0,0,0,0,0,0,0,0,0,0,0,0,0,0,0,0,0,0,0,0,0,0,0,0,0,0,0,0,0]
[null,null,null,null,7,null,null,null,null,null,null,null,null,0,0,0,0,0,0,0,0,0,0,0,0,0,0,0,0,0,0,0,0,0,0,0,0,0,0,0,0,0,0,0,0,0,0,0,0,0,0,0,0,0,0,0,0,0,0,0,0]
[null,null,null,null,8,null,null,null,null,null,null,null,null,null,0,0,0,0,0,0,0,0,0,0,0,0,0,0,0,0,0,0,0,0,0,0,0,0,0,0,0,0,0,0,0,0,0,0,0,0,0,0,0,0,0,0,0,0,0,0,0]
[null,null,null,null,9,null,null,null,null,null,null,null,null,null,null,0,0,0,0,0,0,0,0,0,0,0,0,0,0,0,0,0,0,0,0,0,0,0,0,0,0,0,0,0,0,0,0,0,0,0,0,0,0,0,0,0,0,0,0,0,0]
[null,null,null,null,10,null,null,null,null,null,null,null,null,null,null,null,0,0,0,0,0,0,0,0,0,0,0,0,0,0,0,0,0,0,0,0,0,0,0,0,0,0,0,0,0,0,0,0,0,0,0,0,0,0,0,0,0,0,0,0,0]
[null,null,{"$f":"Asset17","v":"Other Equipment"},null,null,null,3.7315021508326454E-2,3.7315021508326454E-2,3.7315021508326454E-2,3.7315021508326454E-2,3.7315021508326454E-2,3.7315021508326454E-2,3.7315021508326454E-2,3.7315021508326454E-2,3.7315021508326454E-2,3.7315021508326454E-2,3.7315021508326454E-2,3.7315021508326454E-2,3.7315021508326454E-2,3.7315021508326454E-2,3.7315021508326454E-2,3.7315021508326454E-2,0,0,0,0,0,0,0,0,0,0,0,0,0,0,0,0,0,0,0,0,0,0,0,0,0,0,0,0,0,0,0,0,0,0,0,0,0,0,0]
[null,{"$f":"C349","v":"Generation Assets"},null,"Initial Asset Base",null,null,0.69805123786391676,0.69805123786391676,0.69805123786391676,0.69805123786391676,0.69805123786391676,0.69805123786391676,0.69805123786391676,0.69805123786391676,0.69805123786391676,0.69805123786391676,0.69805123786391676,0.69805123786391676,0.69805123786391676,0.69805123786391676,0.69805123786391676,0.69805123786391676,0,0,0,0,0,0,0,0,0,0,0,0,0,0,0,0,0,0,0,0,0,0,0,0,0,0,0,0,0,0,0,0,0,0,0,0,0,0,0]
[null,null,null,"Capex in year",0]
[null,null,null,null,1,null,null,0,0,0,0,0,0,0,0,0,0,0,0,0,0,0,0,0,0,0,0,0,0,0,0,0,0,0,0,0,0,0,0,0,0,0,0,0,0,0,0,0,0,0,0,0,0,0,0,0,0,0,0,0,0]
[null,null,null,null,2,null,null,null,0,0,0,0,0,0,0,0,0,0,0,0,0,0,0,0,0,0,0,0,0,0,0,0,0,0,0,0,0,0,0,0,0,0,0,0,0,0,0,0,0,0,0,0,0,0,0,0,0,0,0,0,0]
[null,null,null,null,3,null,null,null,null,0,0,0,0,0,0,0,0,0,0,0,0,0,0,0,0,0,0,0,0,0,0,0,0,0,0,0,0,0,0,0,0,0,0,0,0,0,0,0,0,0,0,0,0,0,0,0,0,0,0,0,0]
[null,null,null,null,4,null,null,null,null,null,0,0,0,0,0,0,0,0,0,0,0,0,0,0,0,0,0,0,0,0,0,0,0,0,0,0,0,0,0,0,0,0,0,0,0,0,0,0,0,0,0,0,0,0,0,0,0,0,0,0,0]
[null,null,null,null,5,null,null,null,null,null,null,0,0,0,0,0,0,0,0,0,0,0,0,0,0,0,0,0,0,0,0,0,0,0,0,0,0,0,0,0,0,0,0,0,0,0,0,0,0,0,0,0,0,0,0,0,0,0,0,0,0]
[null,null,null,null,6,null,null,null,null,null,null,null,0,0,0,0,0,0,0,0,0,0,0,0,0,0,0,0,0,0,0,0,0,0,0,0,0,0,0,0,0,0,0,0,0,0,0,0,0,0,0,0,0,0,0,0,0,0,0,0,0]
[null,null,null,null,7,null,null,null,null,null,null,null,null,0,0,0,0,0,0,0,0,0,0,0,0,0,0,0,0,0,0,0,0,0,0,0,0,0,0,0,0,0,0,0,0,0,0,0,0,0,0,0,0,0,0,0,0,0,0,0,0]
[null,null,null,null,8,null,null,null,null,null,null,null,null,null,0,0,0,0,0,0,0,0,0,0,0,0,0,0,0,0,0,0,0,0,0,0,0,0,0,0,0,0,0,0,0,0,0,0,0,0,0,0,0,0,0,0,0,0,0,0,0]
[null,null,null,null,9,null,null,null,null,null,null,null,null,null,null,0,0,0,0,0,0,0,0,0,0,0,0,0,0,0,0,0,0,0,0,0,0,0,0,0,0,0,0,0,0,0,0,0,0,0,0,0,0,0,0,0,0,0,0,0,0]
[null,null,null,null,10,null,null,null,null,null,null,null,null,null,null,null,0,0,0,0,0,0,0,0,0,0,0,0,0,0,0,0,0,0,0,0,0,0,0,0,0,0,0,0,0,0,0,0,0,0,0,0,0,0,0,0,0,0,0,0,0]
[null,null,{"$f":"Asset18","v":"Generation Assets"},null,null,null,0.69805123786391676,0.69805123786391676,0.69805123786391676,0.69805123786391676,0.69805123786391676,0.69805123786391676,0.69805123786391676,0.69805123786391676,0.69805123786391676,0.69805123786391676,0.69805123786391676,0.69805123786391676,0.69805123786391676,0.69805123786391676,0.69805123786391676,0.69805123786391676,0,0,0,0,0,0,0,0,0,0,0,0,0,0,0,0,0,0,0,0,0,0,0,0,0,0,0,0,0,0,0,0,0,0,0,0,0,0,0]
[null,{"$f":"C362","v":"Motor Vehicles"},null,"Initial Asset Base",null,null,27.34774224397831,24.570474570032552,22.667581823226055,21.378930906647966,18.87628370855829,15.244808843759149,13.943417223145941,12.340735488800117,9.8318687328330512,6.1436482140916508,0,0,0,0,0,0,0,0,0,0,0,0,0,0,0,0,0,0,0,0,0,0,0,0,0,0,0,0,0,0,0,0,0,0,0,0,0,0,0,0,0,0,0,0,0]
[null,null,null,"Capex in year",0]
[null,null,null,null,1,null,null,5.7666318942359007,5.7666318942359007,5.7666318942359007,5.7666318942359007,5.7666318942359007,5.7666318942359007,5.7666318942359007,5.7666318942359007,5.7666318942359007,5.7666318942359007,0,0,0,0,0,0,0,0,0,0,0,0,0,0,0,0,0,0,0,0,0,0,0,0,0,0,0,0,0,0,0,0,0,0,0,0,0,0,0,0,0,0,0,0]
[null,null,null,null,2,null,null,null,5.6575579982276851,5.6575579982276851,5.6575579982276851,5.6575579982276851,5.6575579982276851,5.6575579982276851,5.6575579982276851,5.6575579982276851,5.6575579982276851,5.6575579982276851,-1.4210854715202004E-14,0,0,0,0,0,0,0,0,0,0,0,0,0,0,0,0,0,0,0,0,0,0,0,0,0,0,0,0,0,0,0,0,0,0,0,0,0,0,0,0,0,0]
[null,null,null,null,3,null,null,null,null,4.3968195865777187,4.3968195865777187,4.3968195865777187,4.3968195865777187,4.3968195865777187,4.3968195865777187,4.3968195865777187,4.3968195865777187,4.3968195865777187,4.3968195865777187,-1.4210854715202004E-14,0,0,0,0,0,0,0,0,0,0,0,0,0,0,0,0,0,0,0,0,0,0,0,0,0,0,0,0,0,0,0,0,0,0,0,0,0,0,0,0,0]
[null,null,null,null,4,null,null,null,null,null,3.582197759374008,3.582197759374008,3.582197759374008,3.582197759374008,3.582197759374008,3.582197759374008,3.582197759374008,3.582197759374008,3.582197759374008,3.582197759374008,-7.1054273576010019E-15,0,0,0,0,0,0,0,0,0,0,0,0,0,0,0,0,0,0,0,0,0,0,0,0,0,0,0,0,0,0,0,0,0,0,0,0,0,0,0,0]
[null,null,null,null,5,null,null,null,null,null,null,4.8806655650740662,4.8806655650740662,4.8806655650740662,4.8806655650740662,4.8806655650740662,4.8806655650740662,4.8806655650740662,4.8806655650740662,4.8806655650740662,4.8806655650740662,-1.4210854715202004E-14,0,0,0,0,0,0,0,0,0,0,0,0,0,0,0,0,0,0,0,0,0,0,0,0,0,0,0,0,0,0,0,0,0,0,0,0,0,0,0]
[null,null,null,null,6,null,null,null,null,null,null,null,0,0,0,0,0,0,0,0,0,0,0,0,0,0,0,0,0,0,0,0,0,0,0,0,0,0,0,0,0,0,0,0,0,0,0,0,0,0,0,0,0,0,0,0,0,0,0,0,0]
[null,null,null,null,7,null,null,null,null,null,null,null,null,0,0,0,0,0,0,0,0,0,0,0,0,0,0,0,0,0,0,0,0,0,0,0,0,0,0,0,0,0,0,0,0,0,0,0,0,0,0,0,0,0,0,0,0,0,0,0,0]
[null,null,null,null,8,null,null,null,null,null,null,null,null,null,0,0,0,0,0,0,0,0,0,0,0,0,0,0,0,0,0,0,0,0,0,0,0,0,0,0,0,0,0,0,0,0,0,0,0,0,0,0,0,0,0,0,0,0,0,0,0]
[null,null,null,null,9,null,null,null,null,null,null,null,null,null,null,0,0,0,0,0,0,0,0,0,0,0,0,0,0,0,0,0,0,0,0,0,0,0,0,0,0,0,0,0,0,0,0,0,0,0,0,0,0,0,0,0,0,0,0,0,0]
[null,null,null,null,10,null,null,null,null,null,null,null,null,null,null,null,0,0,0,0,0,0,0,0,0,0,0,0,0,0,0,0,0,0,0,0,0,0,0,0,0,0,0,0,0,0,0,0,0,0,0,0,0,0,0,0,0,0,0,0,0]
[null,null,{"$f":"Asset19","v":"Motor Vehicles"},null,null,null,27.34774224397831,30.337106464268452,34.091771715689639,37.199940385689274,38.279490946973596,39.528681647248533,38.227290026635316,36.624608292289494,34.115741536322425,30.427521017581029,24.28387280348938,18.517240909253481,12.859682911025779,8.46286332444806,4.8806655650740591,-1.4210854715202004E-14,0,0,0,0,0,0,0,0,0,0,0,0,0,0,0,0,0,0,0,0,0,0,0,0,0,0,0,0,0,0,0,0,0,0,0,0,0,0,0]
[null,{"$f":"C375","v":"Plant & Equipment"},null,"Initial Asset Base",null,null,9.2947054392793262,7.438100680766536,5.8340721259670403,5.1880105467441551,4.3902007709208011,2.8977788891406884,2.4174549302569113,1.9210613357159514,1.2915768714593081,0.71194056085047053,0,0,0,0,0,0,0,0,0,0,0,0,0,0,0,0,0,0,0,0,0,0,0,0,0,0,0,0,0,0,0,0,0,0,0,0,0,0,0,0,0,0,0,0,0]
[null,null,null,"Capex in year",0]
[null,null,null,null,1,null,null,0.68076028020555202,0.68076028020555202,0.68076028020555202,0.68076028020555202,0.68076028020555202,0.68076028020555202,0.68076028020555202,0.68076028020555202,0.68076028020555202,0.68076028020555202,-1.7763568394002505E-15,0,0,0,0,0,0,0,0,0,0,0,0,0,0,0,0,0,0,0,0,0,0,0,0,0,0,0,0,0,0,0,0,0,0,0,0,0,0,0,0,0,0,0]
[null,null,null,null,2,null,null,null,0.64016346125123413,0.64016346125123413,0.64016346125123413,0.64016346125123413,0.64016346125123413,0.64016346125123413,0.64016346125123413,0.64016346125123413,0.64016346125123413,0.64016346125123413,1.7763568394002505E-15,0,0,0,0,0,0,0,0,0,0,0,0,0,0,0,0,0,0,0,0,0,0,0,0,0,0,0,0,0,0,0,0,0,0,0,0,0,0,0,0,0,0]
[null,null,null,null,3,null,null,null,null,0.65480195452288759,0.65480195452288759,0.65480195452288759,0.65480195452288759,0.65480195452288759,0.65480195452288759,0.65480195452288759,0.65480195452288759,0.65480195452288759,0.65480195452288759,8.8817841970012523E-16,0,0,0,0,0,0,0,0,0,0,0,0,0,0,0,0,0,0,0,0,0,0,0,0,0,0,0,0,0,0,0,0,0,0,0,0,0,0,0,0,0]
[null,null,null,null,4,null,null,null,null,null,0.62943530670669523,0.62943530670669523,0.62943530670669523,0.62943530670669523,0.62943530670669523,0.62943530670669523,0.62943530670669523,0.62943530670669523,0.62943530670669523,0.62943530670669523,-8.8817841970012523E-16,0,0,0,0,0,0,0,0,0,0,0,0,0,0,0,0,0,0,0,0,0,0,0,0,0,0,0,0,0,0,0,0,0,0,0,0,0,0,0,0]
[null,null,null,null,5,null,null,null,null,null,null,0.61423938755225327,0.61423938755225327,0.61423938755225327,0.61423938755225327,0.61423938755225327,0.61423938755225327,0.61423938755225327,0.61423938755225327,0.61423938755225327,0.61423938755225327,8.8817841970012523E-16,0,0,0,0,0,0,0,0,0,0,0,0,0,0,0,0,0,0,0,0,0,0,0,0,0,0,0,0,0,0,0,0,0,0,0,0,0,0,0]
[null,null,null,null,6,null,null,null,null,null,null,null,0,0,0,0,0,0,0,0,0,0,0,0,0,0,0,0,0,0,0,0,0,0,0,0,0,0,0,0,0,0,0,0,0,0,0,0,0,0,0,0,0,0,0,0,0,0,0,0,0]
[null,null,null,null,7,null,null,null,null,null,null,null,null,0,0,0,0,0,0,0,0,0,0,0,0,0,0,0,0,0,0,0,0,0,0,0,0,0,0,0,0,0,0,0,0,0,0,0,0,0,0,0,0,0,0,0,0,0,0,0,0]
[null,null,null,null,8,null,null,null,null,null,null,null,null,null,0,0,0,0,0,0,0,0,0,0,0,0,0,0,0,0,0,0,0,0,0,0,0,0,0,0,0,0,0,0,0,0,0,0,0,0,0,0,0,0,0,0,0,0,0,0,0]
[null,null,null,null,9,null,null,null,null,null,null,null,null,null,null,0,0,0,0,0,0,0,0,0,0,0,0,0,0,0,0,0,0,0,0,0,0,0,0,0,0,0,0,0,0,0,0,0,0,0,0,0,0,0,0,0,0,0,0,0,0]
[null,null,null,null,10,null,null,null,null,null,null,null,null,null,null,null,0,0,0,0,0,0,0,0,0,0,0,0,0,0,0,0,0,0,0,0,0,0,0,0,0,0,0,0,0,0,0,0,0,0,0,0,0,0,0,0,0,0,0,0,0]
[null,null,{"$f":"Asset20","v":"Plant & Equipment"},null,null,null,9.2947054392793262,8.1188609609720874,7.1549958674238265,7.1637362427238287,6.9953617736071703,6.1171792793793101,5.636855320495533,5.1404617259545731,4.5109772616979305,3.9313409510890924,3.2194003902386226,2.5386401100330684,1.8984766487818381,1.2436746942589494,0.61423938755225238,8.8817841970012523E-16,0,0,0,0,0,0,0,0,0,0,0,0,0,0,0,0,0,0,0,0,0,0,0,0,0,0,0,0,0,0,0,0,0,0,0,0,0,0,0]
[null,{"$f":"C388","v":"Buildings"},null,"Initial Asset Base",null,null,13.036965272421174,13.036965272421174,13.036965272421174,13.036965272421174,13.036965272421174,13.036965272421174,13.036965272421174,13.036965272421174,13.036965272421174,13.036965272421174,13.036965272421174,13.036965272421174,13.036965272421174,13.036965272421174,13.036965272421174,13.036965272421174,0,0,0,0,0,0,0,0,0,0,0,0,0,0,0,0,0,0,0,0,0,0,0,0,0,0,0,0,0,0,0,0,0,0,0,0,0,0,0]
[null,null,null,"Capex in year",0]
[null,null,null,null,1,null,null,0.76271195408602854,0.76271195408602854,0.76271195408602854,0.76271195408602854,0.76271195408602854,0.76271195408602854,0.76271195408602854,0.76271195408602854,0.76271195408602854,0.76271195408602854,0.76271195408602854,0.76271195408602854,0.76271195408602854,0.76271195408602854,0.76271195408602854,0.76271195408602854,0.76271195408602854,0.76271195408602854,0.76271195408602854,0.76271195408602854,0.76271195408602854,0.76271195408602854,0.76271195408602854,0.76271195408602854,0.76271195408602854,0.76271195408602854,0.76271195408602854,0.76271195408602854,0.76271195408602854,0.76271195408602854,0.76271195408602854,0.76271195408602854,0.76271195408602854,0.76271195408602854,0.76271195408602854,0.76271195408602854,0.76271195408602854,0.76271195408602854,0.76271195408602854,0.76271195408602854,-1.4210854715202004E-14,0,0,0,0,0,0,0,0,0,0,0,0,0]
[null,null,null,null,2,null,null,null,0.6203626023766613,0.6203626023766613,0.6203626023766613,0.6203626023766613,0.6203626023766613,0.6203626023766613,0.6203626023766613,0.6203626023766613,0.6203626023766613,0.6203626023766613,0.6203626023766613,0.6203626023766613,0.6203626023766613,0.6203626023766613,0.6203626023766613,0.6203626023766613,0.6203626023766613,0.6203626023766613,0.6203626023766613,0.6203626023766613,0.6203626023766613,0.6203626023766613,0.6203626023766613,0.6203626023766613,0.6203626023766613,0.6203626023766613,0.6203626023766613,0.6203626023766613,0.6203626023766613,0.6203626023766613,0.6203626023766613,0.6203626023766613,0.6203626023766613,0.6203626023766613,0.6203626023766613,0.6203626023766613,0.6203626023766613,0.6203626023766613,0.6203626023766613,0.6203626023766613,-7.1054273576010019E-15,0,0,0,0,0,0,0,0,0,0,0,0]
[null,null,null,null,3,null,null,null,null,0.746281810603315,0.746281810603315,0.746281810603315,0.746281810603315,0.746281810603315,0.746281810603315,0.746281810603315,0.746281810603315,0.746281810603315,0.746281810603315,0.746281810603315,0.746281810603315,0.746281810603315,0.746281810603315,0.746281810603315,0.746281810603315,0.746281810603315,0.746281810603315,0.746281810603315,0.746281810603315,0.746281810603315,0.746281810603315,0.746281810603315,0.746281810603315,0.746281810603315,0.746281810603315,0.746281810603315,0.746281810603315,0.746281810603315,0.746281810603315,0.746281810603315,0.746281810603315,0.746281810603315,0.746281810603315,0.746281810603315,0.746281810603315,0.746281810603315,0.746281810603315,0.746281810603315,0.746281810603315,1.0658141036401503E-14,0,0,0,0,0,0,0,0,0,0,0]
[null,null,null,null,4,null,null,null,null,null,0.84308618548684533,0.84308618548684533,0.84308618548684533,0.84308618548684533,0.84308618548684533,0.84308618548684533,0.84308618548684533,0.84308618548684533,0.84308618548684533,0.84308618548684533,0.84308618548684533,0.84308618548684533,0.84308618548684533,0.84308618548684533,0.84308618548684533,0.84308618548684533,0.84308618548684533,0.84308618548684533,0.84308618548684533,0.84308618548684533,0.84308618548684533,0.84308618548684533,0.84308618548684533,0.84308618548684533,0.84308618548684533,0.84308618548684533,0.84308618548684533,0.84308618548684533,0.84308618548684533,0.84308618548684533,0.84308618548684533,0.84308618548684533,0.84308618548684533,0.84308618548684533,0.84308618548684533,0.84308618548684533,0.84308618548684533,0.84308618548684533,0.84308618548684533,0.84308618548684533,-2.1316282072803006E-14,0,0,0,0,0,0,0,0,0,0]
[null,null,null,null,5,null,null,null,null,null,null,0.78951126202848954,0.78951126202848954,0.78951126202848954,0.78951126202848954,0.78951126202848954,0.78951126202848954,0.78951126202848954,0.78951126202848954,0.78951126202848954,0.78951126202848954,0.78951126202848954,0.78951126202848954,0.78951126202848954,0.78951126202848954,0.78951126202848954,0.78951126202848954,0.78951126202848954,0.78951126202848954,0.78951126202848954,0.78951126202848954,0.78951126202848954,0.78951126202848954,0.78951126202848954,0.78951126202848954,0.78951126202848954,0.78951126202848954,0.78951126202848954,0.78951126202848954,0.78951126202848954,0.78951126202848954,0.78951126202848954,0.78951126202848954,0.78951126202848954,0.78951126202848954,0.78951126202848954,0.78951126202848954,0.78951126202848954,0.78951126202848954,0.78951126202848954,0.78951126202848954,-1.0658141036401503E-14,0,0,0,0,0,0,0,0,0]
[null,null,null,null,6,null,null,null,null,null,null,null,0,0,0,0,0,0,0,0,0,0,0,0,0,0,0,0,0,0,0,0,0,0,0,0,0,0,0,0,0,0,0,0,0,0,0,0,0,0,0,0,0,0,0,0,0,0,0,0,0]
[null,null,null,null,7,null,null,null,null,null,null,null,null,0,0,0,0,0,0,0,0,0,0,0,0,0,0,0,0,0,0,0,0,0,0,0,0,0,0,0,0,0,0,0,0,0,0,0,0,0,0,0,0,0,0,0,0,0,0,0,0]
[null,null,null,null,8,null,null,null,null,null,null,null,null,null,0,0,0,0,0,0,0,0,0,0,0,0,0,0,0,0,0,0,0,0,0,0,0,0,0,0,0,0,0,0,0,0,0,0,0,0,0,0,0,0,0,0,0,0,0,0,0]
[null,null,null,null,9,null,null,null,null,null,null,null,null,null,null,0,0,0,0,0,0,0,0,0,0,0,0,0,0,0,0,0,0,0,0,0,0,0,0,0,0,0,0,0,0,0,0,0,0,0,0,0,0,0,0,0,0,0,0,0,0]
[null,null,null,null,10,null,null,null,null,null,null,null,null,null,null,null,0,0,0,0,0,0,0,0,0,0,0,0,0,0,0,0,0,0,0,0,0,0,0,0,0,0,0,0,0,0,0,0,0,0,0,0,0,0,0,0,0,0,0,0,0]
[null,null,{"$f":"Asset21","v":"Buildings"},null,null,null,13.036965272421174,13.799677226507203,14.420039828883864,15.16632163948718,16.009407824974026,16.798919087002517,16.798919087002517,16.798919087002517,16.798919087002517,16.798919087002517,16.798919087002517,16.798919087002517,16.798919087002517,16.798919087002517,16.798919087002517,16.798919087002517,3.7619538145813398,3.7619538145813398,3.7619538145813398,3.7619538145813398,3.7619538145813398,3.7619538145813398,3.7619538145813398,3.7619538145813398,3.7619538145813398,3.7619538145813398,3.7619538145813398,3.7619538145813398,3.7619538145813398,3.7619538145813398,3.7619538145813398,3.7619538145813398,3.7619538145813398,3.7619538145813398,3.7619538145813398,3.7619538145813398,3.7619538145813398,3.7619538145813398,3.7619538145813398,3.7619538145813398,3.7619538145813398,2.9992418604952973,2.3788792581186429,1.6325974475153455,0.78951126202846822,-1.0658141036401503E-14,0,0,0,0,0,0,0,0,0]
[null,{"$f":"C401","v":"Office Equipment & Furniture"},null,"Initial Asset Base",null,null,-2.4041090306070969,-1.6476900203645062,-1.2676531275454961,-1.2676531275454961,-1.2676531275454961,-1.2676531275454963,-0.65952356618326069,0,0,0,0,0,0,0,0,0,0,0,0,0,0,0,0,0,0,0,0,0,0,0,0,0,0,0,0,0,0,0,0,0,0,0,0,0,0,0,0,0,0,0,0,0,0,0,0]
[null,null,null,"Capex in year",0]
[null,null,null,null,1,null,null,0.26834876152253356,0.26834876152253356,0.26834876152253356,0.26834876152253356,0.26834876152253356,0.26834876152253356,0.26834876152253356,2.2204460492503131E-16,0,0,0,0,0,0,0,0,0,0,0,0,0,0,0,0,0,0,0,0,0,0,0,0,0,0,0,0,0,0,0,0,0,0,0,0,0,0,0,0,0,0,0,0,0,0]
[null,null,null,null,2,null,null,null,0.21826527714799129,0.21826527714799129,0.21826527714799129,0.21826527714799129,0.21826527714799129,0.21826527714799129,0.21826527714799129,0,0,0,0,0,0,0,0,0,0,0,0,0,0,0,0,0,0,0,0,0,0,0,0,0,0,0,0,0,0,0,0,0,0,0,0,0,0,0,0,0,0,0,0,0,0]
[null,null,null,null,3,null,null,null,null,0.26256806196537624,0.26256806196537624,0.26256806196537624,0.26256806196537624,0.26256806196537624,0.26256806196537624,0.26256806196537624,0,0,0,0,0,0,0,0,0,0,0,0,0,0,0,0,0,0,0,0,0,0,0,0,0,0,0,0,0,0,0,0,0,0,0,0,0,0,0,0,0,0,0,0,0]
[null,null,null,null,4,null,null,null,null,null,0.29662722934932989,0.29662722934932989,0.29662722934932989,0.29662722934932989,0.29662722934932989,0.29662722934932989,0.29662722934932989,0,0,0,0,0,0,0,0,0,0,0,0,0,0,0,0,0,0,0,0,0,0,0,0,0,0,0,0,0,0,0,0,0,0,0,0,0,0,0,0,0,0,0,0]
[null,null,null,null,5,null,null,null,null,null,null,0.27777769607311126,0.27777769607311126,0.27777769607311126,0.27777769607311126,0.27777769607311126,0.27777769607311126,0.27777769607311126,2.2204460492503131E-16,0,0,0,0,0,0,0,0,0,0,0,0,0,0,0,0,0,0,0,0,0,0,0,0,0,0,0,0,0,0,0,0,0,0,0,0,0,0,0,0,0,0]
[null,null,null,null,6,null,null,null,null,null,null,null,0,0,0,0,0,0,0,0,0,0,0,0,0,0,0,0,0,0,0,0,0,0,0,0,0,0,0,0,0,0,0,0,0,0,0,0,0,0,0,0,0,0,0,0,0,0,0,0,0]
[null,null,null,null,7,null,null,null,null,null,null,null,null,0,0,0,0,0,0,0,0,0,0,0,0,0,0,0,0,0,0,0,0,0,0,0,0,0,0,0,0,0,0,0,0,0,0,0,0,0,0,0,0,0,0,0,0,0,0,0,0]
[null,null,null,null,8,null,null,null,null,null,null,null,null,null,0,0,0,0,0,0,0,0,0,0,0,0,0,0,0,0,0,0,0,0,0,0,0,0,0,0,0,0,0,0,0,0,0,0,0,0,0,0,0,0,0,0,0,0,0,0,0]
[null,null,null,null,9,null,null,null,null,null,null,null,null,null,null,0,0,0,0,0,0,0,0,0,0,0,0,0,0,0,0,0,0,0,0,0,0,0,0,0,0,0,0,0,0,0,0,0,0,0,0,0,0,0,0,0,0,0,0,0,0]
[null,null,null,null,10,null,null,null,null,null,null,null,null,null,null,null,0,0,0,0,0,0,0,0,0,0,0,0,0,0,0,0,0,0,0,0,0,0,0,0,0,0,0,0,0,0,0,0,0,0,0,0,0,0,0,0,0,0,0,0,0]
[null,null,{"$f":"Asset22","v":"Office Equipment & Furniture"},null,null,null,-2.4041090306070969,-1.3793412588419727,-0.78103908887497131,-0.51847102690959512,-0.22184379756026523,5.5933898512845803E-2,0.66406345987508164,1.3235870260583424,1.0552382645358089,0.83697298738781734,0.57440492542244115,0.27777769607311126,2.2204460492503131E-16,0,0,0,0,0,0,0,0,0,0,0,0,0,0,0,0,0,0,0,0,0,0,0,0,0,0,0,0,0,0,0,0,0,0,0,0,0,0,0,0,0,0]
[null,{"$f":"C414","v":"Initial Leases (10 yr life)"},null,"Initial Asset Base",null,null,12.371019656988214,12.371019656988214,12.371019656988214,12.371019656988214,4.1178474268094547,0,0,0,0,0,0,0,0,0,0,0,0,0,0,0,0,0,0,0,0,0,0,0,0,0,0,0,0,0,0,0,0,0,0,0,0,0,0,0,0,0,0,0,0,0,0,0,0,0,0]
[null,null,null,"Capex in year",0]
[null,null,null,null,1,null,null,0,0,0,0,0,0,0,0,0,0,0,0,0,0,0,0,0,0,0,0,0,0,0,0,0,0,0,0,0,0,0,0,0,0,0,0,0,0,0,0,0,0,0,0,0,0,0,0,0,0,0,0,0,0]
[null,null,null,null,2,null,null,null,0,0,0,0,0,0,0,0,0,0,0,0,0,0,0,0,0,0,0,0,0,0,0,0,0,0,0,0,0,0,0,0,0,0,0,0,0,0,0,0,0,0,0,0,0,0,0,0,0,0,0,0,0]
[null,null,null,null,3,null,null,null,null,0,0,0,0,0,0,0,0,0,0,0,0,0,0,0,0,0,0,0,0,0,0,0,0,0,0,0,0,0,0,0,0,0,0,0,0,0,0,0,0,0,0,0,0,0,0,0,0,0,0,0,0]
[null,null,null,null,4,null,null,null,null,null,0,0,0,0,0,0,0,0,0,0,0,0,0,0,0,0,0,0,0,0,0,0,0,0,0,0,0,0,0,0,0,0,0,0,0,0,0,0,0,0,0,0,0,0,0,0,0,0,0,0,0]
[null,null,null,null,5,null,null,null,null,null,null,0,0,0,0,0,0,0,0,0,0,0,0,0,0,0,0,0,0,0,0,0,0,0,0,0,0,0,0,0,0,0,0,0,0,0,0,0,0,0,0,0,0,0,0,0,0,0,0,0,0]
[null,null,null,null,6,null,null,null,null,null,null,null,0,0,0,0,0,0,0,0,0,0,0,0,0,0,0,0,0,0,0,0,0,0,0,0,0,0,0,0,0,0,0,0,0,0,0,0,0,0,0,0,0,0,0,0,0,0,0,0,0]
[null,null,null,null,7,null,null,null,null,null,null,null,null,0,0,0,0,0,0,0,0,0,0,0,0,0,0,0,0,0,0,0,0,0,0,0,0,0,0,0,0,0,0,0,0,0,0,0,0,0,0,0,0,0,0,0,0,0,0,0,0]
[null,null,null,null,8,null,null,null,null,null,null,null,null,null,0,0,0,0,0,0,0,0,0,0,0,0,0,0,0,0,0,0,0,0,0,0,0,0,0,0,0,0,0,0,0,0,0,0,0,0,0,0,0,0,0,0,0,0,0,0,0]
[null,null,null,null,9,null,null,null,null,null,null,null,null,null,null,0,0,0,0,0,0,0,0,0,0,0,0,0,0,0,0,0,0,0,0,0,0,0,0,0,0,0,0,0,0,0,0,0,0,0,0,0,0,0,0,0,0,0,0,0,0]
[null,null,null,null,10,null,null,null,null,null,null,null,null,null,null,null,0,0,0,0,0,0,0,0,0,0,0,0,0,0,0,0,0,0,0,0,0,0,0,0,0,0,0,0,0,0,0,0,0,0,0,0,0,0,0,0,0,0,0,0,0]
[null,null,{"$f":"Asset23","v":"Initial Leases (10 yr life)"},null,null,null,12.371019656988214,12.371019656988214,12.371019656988214,12.371019656988214,4.1178474268094547,0,0,0,0,0,0,0,0,0,0,0,0,0,0,0,0,0,0,0,0,0,0,0,0,0,0,0,0,0,0,0,0,0,0,0,0,0,0,0,0,0,0,0,0,0,0,0,0,0,0]
[null,{"$f":"C427","v":"Lease Extensions (5yr Life)"},null,"Initial Asset Base",null,null,0,0,0,0,0,0,0,0,0,0,0,0,0,0,0,0,0,0,0,0,0,0,0,0,0,0,0,0,0,0,0,0,0,0,0,0,0,0,0,0,0,0,0,0,0,0,0,0,0,0,0,0,0,0,0]
[null,null,null,"Capex in year",0]
[null,null,null,null,1,null,null,0,0,0,0,0,0,0,0,0,0,0,0,0,0,0,0,0,0,0,0,0,0,0,0,0,0,0,0,0,0,0,0,0,0,0,0,0,0,0,0,0,0,0,0,0,0,0,0,0,0,0,0,0,0]
[null,null,null,null,2,null,null,null,0,0,0,0,0,0,0,0,0,0,0,0,0,0,0,0,0,0,0,0,0,0,0,0,0,0,0,0,0,0,0,0,0,0,0,0,0,0,0,0,0,0,0,0,0,0,0,0,0,0,0,0,0]
[null,null,null,null,3,null,null,null,null,0,0,0,0,0,0,0,0,0,0,0,0,0,0,0,0,0,0,0,0,0,0,0,0,0,0,0,0,0,0,0,0,0,0,0,0,0,0,0,0,0,0,0,0,0,0,0,0,0,0,0,0]
[null,null,null,null,4,null,null,null,null,null,2.9945418242682562,2.9945418242682562,2.9945418242682562,2.9945418242682562,2.9945418242682562,-1.7763568394002505E-15,0,0,0,0,0,0,0,0,0,0,0,0,0,0,0,0,0,0,0,0,0,0,0,0,0,0,0,0,0,0,0,0,0,0,0,0,0,0,0,0,0,0,0,0,0]
[null,null,null,null,5,null,null,null,null,null,null,0.51703474433228058,0.51703474433228058,0.51703474433228058,0.51703474433228058,0.51703474433228058,0,0,0,0,0,0,0,0,0,0,0,0,0,0,0,0,0,0,0,0,0,0,0,0,0,0,0,0,0,0,0,0,0,0,0,0,0,0,0,0,0,0,0,0,0]
[null,null,null,null,6,null,null,null,null,null,null,null,0,0,0,0,0,0,0,0,0,0,0,0,0,0,0,0,0,0,0,0,0,0,0,0,0,0,0,0,0,0,0,0,0,0,0,0,0,0,0,0,0,0,0,0,0,0,0,0,0]
[null,null,null,null,7,null,null,null,null,null,null,null,null,0,0,0,0,0,0,0,0,0,0,0,0,0,0,0,0,0,0,0,0,0,0,0,0,0,0,0,0,0,0,0,0,0,0,0,0,0,0,0,0,0,0,0,0,0,0,0,0]
[null,null,null,null,8,null,null,null,null,null,null,null,null,null,0,0,0,0,0,0,0,0,0,0,0,0,0,0,0,0,0,0,0,0,0,0,0,0,0,0,0,0,0,0,0,0,0,0,0,0,0,0,0,0,0,0,0,0,0,0,0]
[null,null,null,null,9,null,null,null,null,null,null,null,null,null,null,0,0,0,0,0,0,0,0,0,0,0,0,0,0,0,0,0,0,0,0,0,0,0,0,0,0,0,0,0,0,0,0,0,0,0,0,0,0,0,0,0,0,0,0,0,0]
[null,null,null,null,10,null,null,null,null,null,null,null,null,null,null,null,0,0,0,0,0,0,0,0,0,0,0,0,0,0,0,0,0,0,0,0,0,0,0,0,0,0,0,0,0,0,0,0,0,0,0,0,0,0,0,0,0,0,0,0,0]
[null,null,{"$f":"Asset24","v":"Lease Extensions (5yr Life)"},null,null,null,0,0,0,0,2.9945418242682562,3.5115765686005367,3.5115765686005367,3.5115765686005367,3.5115765686005367,0.51703474433227881,0,0,0,0,0,0,0,0,0,0,0,0,0,0,0,0,0,0,0,0,0,0,0,0,0,0,0,0,0,0,0,0,0,0,0,0,0,0,0,0,0,0,0,0,0]
[null,{"$f":"C440","v":"Land & Easements - combined"},null,"Initial Asset Base",null,null,0,0,0,0,0,0,0,0,0,0,0,0,0,0,0,0,0,0,0,0,0,0,0,0,0,0,0,0,0,0,0,0,0,0,0,0,0,0,0,0,0,0,0,0,0,0,0,0,0,0,0,0,0,0,0]
[null,null,null,"Capex in year",0]
[null,null,null,null,1,null,null,"n/a","n/a","n/a","n/a","n/a","n/a","n/a","n/a","n/a","n/a","n/a","n/a","n/a","n/a","n/a","n/a","n/a","n/a","n/a","n/a","n/a","n/a","n/a","n/a","n/a","n/a","n/a","n/a","n/a","n/a","n/a","n/a","n/a","n/a","n/a","n/a","n/a","n/a","n/a","n/a","n/a","n/a","n/a","n/a","n/a","n/a","n/a","n/a","n/a","n/a","n/a","n/a","n/a","n/a"]
[null,null,null,null,2,null,null,null,"n/a","n/a","n/a","n/a","n/a","n/a","n/a","n/a","n/a","n/a","n/a","n/a","n/a","n/a","n/a","n/a","n/a","n/a","n/a","n/a","n/a","n/a","n/a","n/a","n/a","n/a","n/a","n/a","n/a","n/a","n/a","n/a","n/a","n/a","n/a","n/a","n/a","n/a","n/a","n/a","n/a","n/a","n/a","n/a","n/a","n/a","n/a","n/a","n/a","n/a","n/a","n/a","n/a"]
[null,null,null,null,3,null,null,null,null,"n/a","n/a","n/a","n/a","n/a","n/a","n/a","n/a","n/a","n/a","n/a","n/a","n/a","n/a","n/a","n/a","n/a","n/a","n/a","n/a","n/a","n/a","n/a","n/a","n/a","n/a","n/a","n/a","n/a","n/a","n/a","n/a","n/a","n/a","n/a","n/a","n/a","n/a","n/a","n/a","n/a","n/a","n/a","n/a","n/a","n/a","n/a","n/a","n/a","n/a","n/a","n/a"]
[null,null,null,null,4,null,null,null,null,null,"n/a","n/a","n/a","n/a","n/a","n/a","n/a","n/a","n/a","n/a","n/a","n/a","n/a","n/a","n/a","n/a","n/a","n/a","n/a","n/a","n/a","n/a","n/a","n/a","n/a","n/a","n/a","n/a","n/a","n/a","n/a","n/a","n/a","n/a","n/a","n/a","n/a","n/a","n/a","n/a","n/a","n/a","n/a","n/a","n/a","n/a","n/a","n/a","n/a","n/a","n/a"]
[null,null,null,null,5,null,null,null,null,null,null,"n/a","n/a","n/a","n/a","n/a","n/a","n/a","n/a","n/a","n/a","n/a","n/a","n/a","n/a","n/a","n/a","n/a","n/a","n/a","n/a","n/a","n/a","n/a","n/a","n/a","n/a","n/a","n/a","n/a","n/a","n/a","n/a","n/a","n/a","n/a","n/a","n/a","n/a","n/a","n/a","n/a","n/a","n/a","n/a","n/a","n/a","n/a","n/a","n/a","n/a"]
[null,null,null,null,6,null,null,null,null,null,null,null,"n/a","n/a","n/a","n/a","n/a","n/a","n/a","n/a","n/a","n/a","n/a","n/a","n/a","n/a","n/a","n/a","n/a","n/a","n/a","n/a","n/a","n/a","n/a","n/a","n/a","n/a","n/a","n/a","n/a","n/a","n/a","n/a","n/a","n/a","n/a","n/a","n/a","n/a","n/a","n/a","n/a","n/a","n/a","n/a","n/a","n/a","n/a","n/a","n/a"]
[null,null,null,null,7,null,null,null,null,null,null,null,null,"n/a","n/a","n/a","n/a","n/a","n/a","n/a","n/a","n/a","n/a","n/a","n/a","n/a","n/a","n/a","n/a","n/a","n/a","n/a","n/a","n/a","n/a","n/a","n/a","n/a","n/a","n/a","n/a","n/a","n/a","n/a","n/a","n/a","n/a","n/a","n/a","n/a","n/a","n/a","n/a","n/a","n/a","n/a","n/a","n/a","n/a","n/a","n/a"]
[null,null,null,null,8,null,null,null,null,null,null,null,null,null,"n/a","n/a","n/a","n/a","n/a","n/a","n/a","n/a","n/a","n/a","n/a","n/a","n/a","n/a","n/a","n/a","n/a","n/a","n/a","n/a","n/a","n/a","n/a","n/a","n/a","n/a","n/a","n/a","n/a","n/a","n/a","n/a","n/a","n/a","n/a","n/a","n/a","n/a","n/a","n/a","n/a","n/a","n/a","n/a","n/a","n/a","n/a"]
[null,null,null,null,9,null,null,null,null,null,null,null,null,null,null,"n/a","n/a","n/a","n/a","n/a","n/a","n/a","n/a","n/a","n/a","n/a","n/a","n/a","n/a","n/a","n/a","n/a","n/a","n/a","n/a","n/a","n/a","n/a","n/a","n/a","n/a","n/a","n/a","n/a","n/a","n/a","n/a","n/a","n/a","n/a","n/a","n/a","n/a","n/a","n/a","n/a","n/a","n/a","n/a","n/a","n/a"]
[null,null,null,null,10,null,null,null,null,null,null,null,null,null,null,null,"n/a","n/a","n/a","n/a","n/a","n/a","n/a","n/a","n/a","n/a","n/a","n/a","n/a","n/a","n/a","n/a","n/a","n/a","n/a","n/a","n/a","n/a","n/a","n/a","n/a","n/a","n/a","n/a","n/a","n/a","n/a","n/a","n/a","n/a","n/a","n/a","n/a","n/a","n/a","n/a","n/a","n/a","n/a","n/a","n/a"]
[null,null,{"$f":"Asset25","v":"Land & Easements - combined"},null,null,null,0,0,0,0,0,0,0,0,0,0,0,0,0,0,0,0,0,0,0,0,0,0,0,0,0,0,0,0,0,0,0,0,0,0,0,0,0,0,0,0,0,0,0,0,0,0,0,0,0,0,0,0,0,0,0]
[null,{"$f":"C453","v":"Communications"},null,"Initial Asset Base",null,null,8.0322751714063898,8.0322751714063898,8.0322751714063898,8.0322751714063898,8.0322751714063898,8.0322751714063898,8.0322751714063898,8.0322751714063898,8.0322751714063898,8.0322751714063898,8.0322751714063898,8.0322751714063898,8.0322751714063898,8.0322751714063898,8.0322751714063898,8.0322751714063898,0,0,0,0,0,0,0,0,0,0,0,0,0,0,0,0,0,0,0,0,0,0,0,0,0,0,0,0,0,0,0,0,0,0,0,0,0,0,0]
[null,null,null,"Capex in year",0]
[null,null,null,null,1,null,null,0,0,0,0,0,0,0,0,0,0,0,0,0,0,0,0,0,0,0,0,0,0,0,0,0,0,0,0,0,0,0,0,0,0,0,0,0,0,0,0,0,0,0,0,0,0,0,0,0,0,0,0,0,0]
[null,null,null,null,2,null,null,null,0,0,0,0,0,0,0,0,0,0,0,0,0,0,0,0,0,0,0,0,0,0,0,0,0,0,0,0,0,0,0,0,0,0,0,0,0,0,0,0,0,0,0,0,0,0,0,0,0,0,0,0,0]
[null,null,null,null,3,null,null,null,null,0,0,0,0,0,0,0,0,0,0,0,0,0,0,0,0,0,0,0,0,0,0,0,0,0,0,0,0,0,0,0,0,0,0,0,0,0,0,0,0,0,0,0,0,0,0,0,0,0,0,0,0]
[null,null,null,null,4,null,null,null,null,null,0,0,0,0,0,0,0,0,0,0,0,0,0,0,0,0,0,0,0,0,0,0,0,0,0,0,0,0,0,0,0,0,0,0,0,0,0,0,0,0,0,0,0,0,0,0,0,0,0,0,0]
[null,null,null,null,5,null,null,null,null,null,null,0,0,0,0,0,0,0,0,0,0,0,0,0,0,0,0,0,0,0,0,0,0,0,0,0,0,0,0,0,0,0,0,0,0,0,0,0,0,0,0,0,0,0,0,0,0,0,0,0,0]
[null,null,null,null,6,null,null,null,null,null,null,null,0,0,0,0,0,0,0,0,0,0,0,0,0,0,0,0,0,0,0,0,0,0,0,0,0,0,0,0,0,0,0,0,0,0,0,0,0,0,0,0,0,0,0,0,0,0,0,0,0]
[null,null,null,null,7,null,null,null,null,null,null,null,null,0,0,0,0,0,0,0,0,0,0,0,0,0,0,0,0,0,0,0,0,0,0,0,0,0,0,0,0,0,0,0,0,0,0,0,0,0,0,0,0,0,0,0,0,0,0,0,0]
[null,null,null,null,8,null,null,null,null,null,null,null,null,null,0,0,0,0,0,0,0,0,0,0,0,0,0,0,0,0,0,0,0,0,0,0,0,0,0,0,0,0,0,0,0,0,0,0,0,0,0,0,0,0,0,0,0,0,0,0,0]
[null,null,null,null,9,null,null,null,null,null,null,null,null,null,null,0,0,0,0,0,0,0,0,0,0,0,0,0,0,0,0,0,0,0,0,0,0,0,0,0,0,0,0,0,0,0,0,0,0,0,0,0,0,0,0,0,0,0,0,0,0]
[null,null,null,null,10,null,null,null,null,null,null,null,null,null,null,null,0,0,0,0,0,0,0,0,0,0,0,0,0,0,0,0,0,0,0,0,0,0,0,0,0,0,0,0,0,0,0,0,0,0,0,0,0,0,0,0,0,0,0,0,0]
[null,null,{"$f":"Asset26","v":"Communications"},null,null,null,8.0322751714063898,8.0322751714063898,8.0322751714063898,8.0322751714063898,8.0322751714063898,8.0322751714063898,8.0322751714063898,8.0322751714063898,8.0322751714063898,8.0322751714063898,8.0322751714063898,8.0322751714063898,8.0322751714063898,8.0322751714063898,8.0322751714063898,8.0322751714063898,0,0,0,0,0,0,0,0,0,0,0,0,0,0,0,0,0,0,0,0,0,0,0,0,0,0,0,0,0,0,0,0,0,0,0,0,0,0,0]
[null,{"$f":"C466","v":"In-house software"},null,"Initial Asset Base",null,null,65.794801238548615,48.782980657999722,33.948398803550461,27.642095110028123,12.711124630882392,0,0,0,0,0,0,0,0,0,0,0,0,0,0,0,0,0,0,0,0,0,0,0,0,0,0,0,0,0,0,0,0,0,0,0,0,0,0,0,0,0,0,0,0,0,0,0,0,0,0]
[null,null,null,"Capex in year",0]
[null,null,null,null,1,null,null,15.716388581671945,15.716388581671945,15.716388581671945,15.716388581671945,15.716388581671945,0,0,0,0,0,0,0,0,0,0,0,0,0,0,0,0,0,0,0,0,0,0,0,0,0,0,0,0,0,0,0,0,0,0,0,0,0,0,0,0,0,0,0,0,0,0,0,0,0]
[null,null,null,null,2,null,null,null,12.909285994674496,12.909285994674496,12.909285994674496,12.909285994674496,12.909285994674496,0,0,0,0,0,0,0,0,0,0,0,0,0,0,0,0,0,0,0,0,0,0,0,0,0,0,0,0,0,0,0,0,0,0,0,0,0,0,0,0,0,0,0,0,0,0,0,0]
[null,null,null,null,3,null,null,null,null,9.8052056689545424,9.8052056689545424,9.8052056689545424,9.8052056689545424,9.8052056689545424,0,0,0,0,0,0,0,0,0,0,0,0,0,0,0,0,0,0,0,0,0,0,0,0,0,0,0,0,0,0,0,0,0,0,0,0,0,0,0,0,0,0,0,0,0,0,0]
[null,null,null,null,4,null,null,null,null,null,7.6577345676245843,7.6577345676245843,7.6577345676245843,7.6577345676245843,7.6577345676245843,0,0,0,0,0,0,0,0,0,0,0,0,0,0,0,0,0,0,0,0,0,0,0,0,0,0,0,0,0,0,0,0,0,0,0,0,0,0,0,0,0,0,0,0,0,0]
[null,null,null,null,5,null,null,null,null,null,null,9.6198286549524923,9.6198286549524923,9.6198286549524923,9.6198286549524923,9.6198286549524923,0,0,0,0,0,0,0,0,0,0,0,0,0,0,0,0,0,0,0,0,0,0,0,0,0,0,0,0,0,0,0,0,0,0,0,0,0,0,0,0,0,0,0,0,0]
[null,null,null,null,6,null,null,null,null,null,null,null,0,0,0,0,0,0,0,0,0,0,0,0,0,0,0,0,0,0,0,0,0,0,0,0,0,0,0,0,0,0,0,0,0,0,0,0,0,0,0,0,0,0,0,0,0,0,0,0,0]
[null,null,null,null,7,null,null,null,null,null,null,null,null,0,0,0,0,0,0,0,0,0,0,0,0,0,0,0,0,0,0,0,0,0,0,0,0,0,0,0,0,0,0,0,0,0,0,0,0,0,0,0,0,0,0,0,0,0,0,0,0]
[null,null,null,null,8,null,null,null,null,null,null,null,null,null,0,0,0,0,0,0,0,0,0,0,0,0,0,0,0,0,0,0,0,0,0,0,0,0,0,0,0,0,0,0,0,0,0,0,0,0,0,0,0,0,0,0,0,0,0,0,0]
[null,null,null,null,9,null,null,null,null,null,null,null,null,null,null,0,0,0,0,0,0,0,0,0,0,0,0,0,0,0,0,0,0,0,0,0,0,0,0,0,0,0,0,0,0,0,0,0,0,0,0,0,0,0,0,0,0,0,0,0,0]
[null,null,null,null,10,null,null,null,null,null,null,null,null,null,null,null,0,0,0,0,0,0,0,0,0,0,0,0,0,0,0,0,0,0,0,0,0,0,0,0,0,0,0,0,0,0,0,0,0,0,0,0,0,0,0,0,0,0,0,0,0]
[null,null,{"$f":"Asset27","v":"In-house software"},null,null,null,65.794801238548615,64.499369239671665,62.574073379896902,66.072975355329106,58.799739443807965,55.708443467878062,39.99205488620612,27.082768891531618,17.277563222577076,9.6198286549524923,0,0,0,0,0,0,0,0,0,0,0,0,0,0,0,0,0,0,0,0,0,0,0,0,0,0,0,0,0,0,0,0,0,0,0,0,0,0,0,0,0,0,0,0,0]
[null,{"$f":"C479","v":"IT Systems"},null,"Initial Asset Base",null,null,2.0913321305095214,2.2813839359905543,2.2813839359905539,0.62861959143776636,0.11802172545020471,0,0,0,0,0,0,0,0,0,0,0,0,0,0,0,0,0,0,0,0,0,0,0,0,0,0,0,0,0,0,0,0,0,0,0,0,0,0,0,0,0,0,0,0,0,0,0,0,0,0]
[null,null,null,"Capex in year",0]
[null,null,null,null,1,null,null,0.6676759390776702,0.6676759390776702,0.6676759390776702,0.6676759390776702,0.6676759390776702,0,0,0,0,0,0,0,0,0,0,0,0,0,0,0,0,0,0,0,0,0,0,0,0,0,0,0,0,0,0,0,0,0,0,0,0,0,0,0,0,0,0,0,0,0,0,0,0,0]
[null,null,null,null,2,null,null,null,0.63151944821955797,0.63151944821955797,0.63151944821955797,0.63151944821955797,0.63151944821955797,0,0,0,0,0,0,0,0,0,0,0,0,0,0,0,0,0,0,0,0,0,0,0,0,0,0,0,0,0,0,0,0,0,0,0,0,0,0,0,0,0,0,0,0,0,0,0,0]
[null,null,null,null,3,null,null,null,null,0.49039731656409319,0.49039731656409319,0.49039731656409319,0.49039731656409319,0.49039731656409319,0,0,0,0,0,0,0,0,0,0,0,0,0,0,0,0,0,0,0,0,0,0,0,0,0,0,0,0,0,0,0,0,0,0,0,0,0,0,0,0,0,0,0,0,0,0,0]
[null,null,null,null,4,null,null,null,null,null,0.37027748751597145,0.37027748751597145,0.37027748751597145,0.37027748751597145,0.37027748751597145,2.2204460492503131E-16,0,0,0,0,0,0,0,0,0,0,0,0,0,0,0,0,0,0,0,0,0,0,0,0,0,0,0,0,0,0,0,0,0,0,0,0,0,0,0,0,0,0,0,0,0]
[null,null,null,null,5,null,null,null,null,null,null,0.46544185540291833,0.46544185540291833,0.46544185540291833,0.46544185540291833,0.46544185540291833,0,0,0,0,0,0,0,0,0,0,0,0,0,0,0,0,0,0,0,0,0,0,0,0,0,0,0,0,0,0,0,0,0,0,0,0,0,0,0,0,0,0,0,0,0]
[null,null,null,null,6,null,null,null,null,null,null,null,0,0,0,0,0,0,0,0,0,0,0,0,0,0,0,0,0,0,0,0,0,0,0,0,0,0,0,0,0,0,0,0,0,0,0,0,0,0,0,0,0,0,0,0,0,0,0,0,0]
[null,null,null,null,7,null,null,null,null,null,null,null,null,0,0,0,0,0,0,0,0,0,0,0,0,0,0,0,0,0,0,0,0,0,0,0,0,0,0,0,0,0,0,0,0,0,0,0,0,0,0,0,0,0,0,0,0,0,0,0,0]
[null,null,null,null,8,null,null,null,null,null,null,null,null,null,0,0,0,0,0,0,0,0,0,0,0,0,0,0,0,0,0,0,0,0,0,0,0,0,0,0,0,0,0,0,0,0,0,0,0,0,0,0,0,0,0,0,0,0,0,0,0]
[null,null,null,null,9,null,null,null,null,null,null,null,null,null,null,0,0,0,0,0,0,0,0,0,0,0,0,0,0,0,0,0,0,0,0,0,0,0,0,0,0,0,0,0,0,0,0,0,0,0,0,0,0,0,0,0,0,0,0,0,0]
[null,null,null,null,10,null,null,null,null,null,null,null,null,null,null,null,0,0,0,0,0,0,0,0,0,0,0,0,0,0,0,0,0,0,0,0,0,0,0,0,0,0,0,0,0,0,0,0,0,0,0,0,0,0,0,0,0,0,0,0,0]
[null,null,{"$f":"Asset28","v":"IT Systems"},null,null,null,2.0913321305095214,2.9490598750682246,3.5805793232877821,2.4182122952990879,2.2778919168274974,2.6253120467802114,1.9576361077025408,1.326116659482983,0.83571934291888983,0.46544185540291855,0,0,0,0,0,0,0,0,0,0,0,0,0,0,0,0,0,0,0,0,0,0,0,0,0,0,0,0,0,0,0,0,0,0,0,0,0,0,0,0,0,0,0,0,0]
[null,{"$f":"C492","v":"Legacy ICT Assets"},null,"Initial Asset Base",null,null,16.06340341487676,16.06340341487676,16.06340341487676,16.06340341487676,16.06340341487676,0,0,0,0,0,0,0,0,0,0,0,0,0,0,0,0,0,0,0,0,0,0,0,0,0,0,0,0,0,0,0,0,0,0,0,0,0,0,0,0,0,0,0,0,0,0,0,0,0,0]
[null,null,null,"Capex in year",0]
[null,null,null,null,1,null,null,0,0,0,0,0,0,0,0,0,0,0,0,0,0,0,0,0,0,0,0,0,0,0,0,0,0,0,0,0,0,0,0,0,0,0,0,0,0,0,0,0,0,0,0,0,0,0,0,0,0,0,0,0,0]
[null,null,null,null,2,null,null,null,0,0,0,0,0,0,0,0,0,0,0,0,0,0,0,0,0,0,0,0,0,0,0,0,0,0,0,0,0,0,0,0,0,0,0,0,0,0,0,0,0,0,0,0,0,0,0,0,0,0,0,0,0]
[null,null,null,null,3,null,null,null,null,0,0,0,0,0,0,0,0,0,0,0,0,0,0,0,0,0,0,0,0,0,0,0,0,0,0,0,0,0,0,0,0,0,0,0,0,0,0,0,0,0,0,0,0,0,0,0,0,0,0,0,0]
[null,null,null,null,4,null,null,null,null,null,0,0,0,0,0,0,0,0,0,0,0,0,0,0,0,0,0,0,0,0,0,0,0,0,0,0,0,0,0,0,0,0,0,0,0,0,0,0,0,0,0,0,0,0,0,0,0,0,0,0,0]
[null,null,null,null,5,null,null,null,null,null,null,0,0,0,0,0,0,0,0,0,0,0,0,0,0,0,0,0,0,0,0,0,0,0,0,0,0,0,0,0,0,0,0,0,0,0,0,0,0,0,0,0,0,0,0,0,0,0,0,0,0]
[null,null,null,null,6,null,null,null,null,null,null,null,0,0,0,0,0,0,0,0,0,0,0,0,0,0,0,0,0,0,0,0,0,0,0,0,0,0,0,0,0,0,0,0,0,0,0,0,0,0,0,0,0,0,0,0,0,0,0,0,0]
[null,null,null,null,7,null,null,null,null,null,null,null,null,0,0,0,0,0,0,0,0,0,0,0,0,0,0,0,0,0,0,0,0,0,0,0,0,0,0,0,0,0,0,0,0,0,0,0,0,0,0,0,0,0,0,0,0,0,0,0,0]
[null,null,null,null,8,null,null,null,null,null,null,null,null,null,0,0,0,0,0,0,0,0,0,0,0,0,0,0,0,0,0,0,0,0,0,0,0,0,0,0,0,0,0,0,0,0,0,0,0,0,0,0,0,0,0,0,0,0,0,0,0]
[null,null,null,null,9,null,null,null,null,null,null,null,null,null,null,0,0,0,0,0,0,0,0,0,0,0,0,0,0,0,0,0,0,0,0,0,0,0,0,0,0,0,0,0,0,0,0,0,0,0,0,0,0,0,0,0,0,0,0,0,0]
[null,null,null,null,10,null,null,null,null,null,null,null,null,null,null,null,0,0,0,0,0,0,0,0,0,0,0,0,0,0,0,0,0,0,0,0,0,0,0,0,0,0,0,0,0,0,0,0,0,0,0,0,0,0,0,0,0,0,0,0,0]
[null,null,{"$f":"Asset29","v":"Legacy ICT Assets"},null,null,null,16.06340341487676,16.06340341487676,16.06340341487676,16.06340341487676,16.06340341487676,0,0,0,0,0,0,0,0,0,0,0,0,0,0,0,0,0,0,0,0,0,0,0,0,0,0,0,0,0,0,0,0,0,0,0,0,0,0,0,0,0,0,0,0,0,0,0,0,0,0]
[null,{"$f":"C505","v":"Buildings - capital works"},null,"Initial Asset Base",null,null,2.319536436824464,2.319536436824464,2.319536436824464,2.319536436824464,2.319536436824464,2.319536436824464,2.319536436824464,2.319536436824464,2.319536436824464,2.319536436824464,2.319536436824464,2.319536436824464,2.319536436824464,2.319536436824464,2.319536436824464,2.319536436824464,0,0,0,0,0,0,0,0,0,0,0,0,0,0,0,0,0,0,0,0,0,0,0,0,0,0,0,0,0,0,0,0,0,0,0,0,0,0,0]
[null,null,null,"Capex in year",0]
[null,null,null,null,1,null,null,0,0,0,0,0,0,0,0,0,0,0,0,0,0,0,0,0,0,0,0,0,0,0,0,0,0,0,0,0,0,0,0,0,0,0,0,0,0,0,0,0,0,0,0,0,0,0,0,0,0,0,0,0,0]
[null,null,null,null,2,null,null,null,0,0,0,0,0,0,0,0,0,0,0,0,0,0,0,0,0,0,0,0,0,0,0,0,0,0,0,0,0,0,0,0,0,0,0,0,0,0,0,0,0,0,0,0,0,0,0,0,0,0,0,0,0]
[null,null,null,null,3,null,null,null,null,0,0,0,0,0,0,0,0,0,0,0,0,0,0,0,0,0,0,0,0,0,0,0,0,0,0,0,0,0,0,0,0,0,0,0,0,0,0,0,0,0,0,0,0,0,0,0,0,0,0,0,0]
[null,null,null,null,4,null,null,null,null,null,0,0,0,0,0,0,0,0,0,0,0,0,0,0,0,0,0,0,0,0,0,0,0,0,0,0,0,0,0,0,0,0,0,0,0,0,0,0,0,0,0,0,0,0,0,0,0,0,0,0,0]
[null,null,null,null,5,null,null,null,null,null,null,0,0,0,0,0,0,0,0,0,0,0,0,0,0,0,0,0,0,0,0,0,0,0,0,0,0,0,0,0,0,0,0,0,0,0,0,0,0,0,0,0,0,0,0,0,0,0,0,0,0]
[null,null,null,null,6,null,null,null,null,null,null,null,0,0,0,0,0,0,0,0,0,0,0,0,0,0,0,0,0,0,0,0,0,0,0,0,0,0,0,0,0,0,0,0,0,0,0,0,0,0,0,0,0,0,0,0,0,0,0,0,0]
[null,null,null,null,7,null,null,null,null,null,null,null,null,0,0,0,0,0,0,0,0,0,0,0,0,0,0,0,0,0,0,0,0,0,0,0,0,0,0,0,0,0,0,0,0,0,0,0,0,0,0,0,0,0,0,0,0,0,0,0,0]
[null,null,null,null,8,null,null,null,null,null,null,null,null,null,0,0,0,0,0,0,0,0,0,0,0,0,0,0,0,0,0,0,0,0,0,0,0,0,0,0,0,0,0,0,0,0,0,0,0,0,0,0,0,0,0,0,0,0,0,0,0]
[null,null,null,null,9,null,null,null,null,null,null,null,null,null,null,0,0,0,0,0,0,0,0,0,0,0,0,0,0,0,0,0,0,0,0,0,0,0,0,0,0,0,0,0,0,0,0,0,0,0,0,0,0,0,0,0,0,0,0,0,0]
[null,null,null,null,10,null,null,null,null,null,null,null,null,null,null,null,0,0,0,0,0,0,0,0,0,0,0,0,0,0,0,0,0,0,0,0,0,0,0,0,0,0,0,0,0,0,0,0,0,0,0,0,0,0,0,0,0,0,0,0,0]
[null,null,{"$f":"Asset30","v":"Buildings - capital works"},null,null,null,2.319536436824464,2.319536436824464,2.319536436824464,2.319536436824464,2.319536436824464,2.319536436824464,2.319536436824464,2.319536436824464,2.319536436824464,2.319536436824464,2.319536436824464,2.319536436824464,2.319536436824464,2.319536436824464,2.319536436824464,2.319536436824464,0,0,0,0,0,0,0,0,0,0,0,0,0,0,0,0,0,0,0,0,0,0,0,0,0,0,0,0,0,0,0,0,0,0,0,0,0,0,0]
[null,{"$f":"C518","v":0},null,"Initial Asset Base",null,null,0,0,0,0,0,0,0,0,0,0,0,0,0,0,0,0,0,0,0,0,0,0,0,0,0,0,0,0,0,0,0,0,0,0,0,0,0,0,0,0,0,0,0,0,0,0,0,0,0,0,0,0,0,0,0]
[null,null,null,"Capex in year",0]
[null,null,null,null,1,null,null,0,0,0,0,0,0,0,0,0,0,0,0,0,0,0,0,0,0,0,0,0,0,0,0,0,0,0,0,0,0,0,0,0,0,0,0,0,0,0,0,0,0,0,0,0,0,0,0,0,0,0,0,0,0]
[null,null,null,null,2,null,null,null,0,0,0,0,0,0,0,0,0,0,0,0,0,0,0,0,0,0,0,0,0,0,0,0,0,0,0,0,0,0,0,0,0,0,0,0,0,0,0,0,0,0,0,0,0,0,0,0,0,0,0,0,0]
[null,null,null,null,3,null,null,null,null,0,0,0,0,0,0,0,0,0,0,0,0,0,0,0,0,0,0,0,0,0,0,0,0,0,0,0,0,0,0,0,0,0,0,0,0,0,0,0,0,0,0,0,0,0,0,0,0,0,0,0,0]
[null,null,null,null,4,null,null,null,null,null,0,0,0,0,0,0,0,0,0,0,0,0,0,0,0,0,0,0,0,0,0,0,0,0,0,0,0,0,0,0,0,0,0,0,0,0,0,0,0,0,0,0,0,0,0,0,0,0,0,0,0]
[null,null,null,null,5,null,null,null,null,null,null,0,0,0,0,0,0,0,0,0,0,0,0,0,0,0,0,0,0,0,0,0,0,0,0,0,0,0,0,0,0,0,0,0,0,0,0,0,0,0,0,0,0,0,0,0,0,0,0,0,0]
[null,null,null,null,6,null,null,null,null,null,null,null,0,0,0,0,0,0,0,0,0,0,0,0,0,0,0,0,0,0,0,0,0,0,0,0,0,0,0,0,0,0,0,0,0,0,0,0,0,0,0,0,0,0,0,0,0,0,0,0,0]
[null,null,null,null,7,null,null,null,null,null,null,null,null,0,0,0,0,0,0,0,0,0,0,0,0,0,0,0,0,0,0,0,0,0,0,0,0,0,0,0,0,0,0,0,0,0,0,0,0,0,0,0,0,0,0,0,0,0,0,0,0]
[null,null,null,null,8,null,null,null,null,null,null,null,null,null,0,0,0,0,0,0,0,0,0,0,0,0,0,0,0,0,0,0,0,0,0,0,0,0,0,0,0,0,0,0,0,0,0,0,0,0,0,0,0,0,0,0,0,0,0,0,0]
[null,null,null,null,9,null,null,null,null,null,null,null,null,null,null,0,0,0,0,0,0,0,0,0,0,0,0,0,0,0,0,0,0,0,0,0,0,0,0,0,0,0,0,0,0,0,0,0,0,0,0,0,0,0,0,0,0,0,0,0,0]
[null,null,null,null,10,null,null,null,null,null,null,null,null,null,null,null,0,0,0,0,0,0,0,0,0,0,0,0,0,0,0,0,0,0,0,0,0,0,0,0,0,0,0,0,0,0,0,0,0,0,0,0,0,0,0,0,0,0,0,0,0]
[null,null,{"$f":"Asset31","v":0},null,null,null,0,0,0,0,0,0,0,0,0,0,0,0,0,0,0,0,0,0,0,0,0,0,0,0,0,0,0,0,0,0,0,0,0,0,0,0,0,0,0,0,0,0,0,0,0,0,0,0,0,0,0,0,0,0,0]
[null,{"$f":"C531","v":0},null,"Initial Asset Base",null,null,0,0,0,0,0,0,0,0,0,0,0,0,0,0,0,0,0,0,0,0,0,0,0,0,0,0,0,0,0,0,0,0,0,0,0,0,0,0,0,0,0,0,0,0,0,0,0,0,0,0,0,0,0,0,0]
[null,null,null,"Capex in year",0]
[null,null,null,null,1,null,null,0,0,0,0,0,0,0,0,0,0,0,0,0,0,0,0,0,0,0,0,0,0,0,0,0,0,0,0,0,0,0,0,0,0,0,0,0,0,0,0,0,0,0,0,0,0,0,0,0,0,0,0,0,0]
[null,null,null,null,2,null,null,null,0,0,0,0,0,0,0,0,0,0,0,0,0,0,0,0,0,0,0,0,0,0,0,0,0,0,0,0,0,0,0,0,0,0,0,0,0,0,0,0,0,0,0,0,0,0,0,0,0,0,0,0,0]
[null,null,null,null,3,null,null,null,null,0,0,0,0,0,0,0,0,0,0,0,0,0,0,0,0,0,0,0,0,0,0,0,0,0,0,0,0,0,0,0,0,0,0,0,0,0,0,0,0,0,0,0,0,0,0,0,0,0,0,0,0]
[null,null,null,null,4,null,null,null,null,null,0,0,0,0,0,0,0,0,0,0,0,0,0,0,0,0,0,0,0,0,0,0,0,0,0,0,0,0,0,0,0,0,0,0,0,0,0,0,0,0,0,0,0,0,0,0,0,0,0,0,0]
[null,null,null,null,5,null,null,null,null,null,null,0,0,0,0,0,0,0,0,0,0,0,0,0,0,0,0,0,0,0,0,0,0,0,0,0,0,0,0,0,0,0,0,0,0,0,0,0,0,0,0,0,0,0,0,0,0,0,0,0,0]
[null,null,null,null,6,null,null,null,null,null,null,null,0,0,0,0,0,0,0,0,0,0,0,0,0,0,0,0,0,0,0,0,0,0,0,0,0,0,0,0,0,0,0,0,0,0,0,0,0,0,0,0,0,0,0,0,0,0,0,0,0]
[null,null,null,null,7,null,null,null,null,null,null,null,null,0,0,0,0,0,0,0,0,0,0,0,0,0,0,0,0,0,0,0,0,0,0,0,0,0,0,0,0,0,0,0,0,0,0,0,0,0,0,0,0,0,0,0,0,0,0,0,0]
[null,null,null,null,8,null,null,null,null,null,null,null,null,null,0,0,0,0,0,0,0,0,0,0,0,0,0,0,0,0,0,0,0,0,0,0,0,0,0,0,0,0,0,0,0,0,0,0,0,0,0,0,0,0,0,0,0,0,0,0,0]
[null,null,null,null,9,null,null,null,null,null,null,null,null,null,null,0,0,0,0,0,0,0,0,0,0,0,0,0,0,0,0,0,0,0,0,0,0,0,0,0,0,0,0,0,0,0,0,0,0,0,0,0,0,0,0,0,0,0,0,0,0]
[null,null,null,null,10,null,null,null,null,null,null,null,null,null,null,null,0,0,0,0,0,0,0,0,0,0,0,0,0,0,0,0,0,0,0,0,0,0,0,0,0,0,0,0,0,0,0,0,0,0,0,0,0,0,0,0,0,0,0,0,0]
[null,null,{"$f":"Asset32","v":0},null,null,null,0,0,0,0,0,0,0,0,0,0,0,0,0,0,0,0,0,0,0,0,0,0,0,0,0,0,0,0,0,0,0,0,0,0,0,0,0,0,0,0,0,0,0,0,0,0,0,0,0,0,0,0,0,0,0]
[null,{"$f":"C544","v":0},null,"Initial Asset Base",null,null,0,0,0,0,0,0,0,0,0,0,0,0,0,0,0,0,0,0,0,0,0,0,0,0,0,0,0,0,0,0,0,0,0,0,0,0,0,0,0,0,0,0,0,0,0,0,0,0,0,0,0,0,0,0,0]
[null,null,null,"Capex in year",0]
[null,null,null,null,1,null,null,0,0,0,0,0,0,0,0,0,0,0,0,0,0,0,0,0,0,0,0,0,0,0,0,0,0,0,0,0,0,0,0,0,0,0,0,0,0,0,0,0,0,0,0,0,0,0,0,0,0,0,0,0,0]
[null,null,null,null,2,null,null,null,0,0,0,0,0,0,0,0,0,0,0,0,0,0,0,0,0,0,0,0,0,0,0,0,0,0,0,0,0,0,0,0,0,0,0,0,0,0,0,0,0,0,0,0,0,0,0,0,0,0,0,0,0]
[null,null,null,null,3,null,null,null,null,0,0,0,0,0,0,0,0,0,0,0,0,0,0,0,0,0,0,0,0,0,0,0,0,0,0,0,0,0,0,0,0,0,0,0,0,0,0,0,0,0,0,0,0,0,0,0,0,0,0,0,0]
[null,null,null,null,4,null,null,null,null,null,0,0,0,0,0,0,0,0,0,0,0,0,0,0,0,0,0,0,0,0,0,0,0,0,0,0,0,0,0,0,0,0,0,0,0,0,0,0,0,0,0,0,0,0,0,0,0,0,0,0,0]
[null,null,null,null,5,null,null,null,null,null,null,0,0,0,0,0,0,0,0,0,0,0,0,0,0,0,0,0,0,0,0,0,0,0,0,0,0,0,0,0,0,0,0,0,0,0,0,0,0,0,0,0,0,0,0,0,0,0,0,0,0]
[null,null,null,null,6,null,null,null,null,null,null,null,0,0,0,0,0,0,0,0,0,0,0,0,0,0,0,0,0,0,0,0,0,0,0,0,0,0,0,0,0,0,0,0,0,0,0,0,0,0,0,0,0,0,0,0,0,0,0,0,0]
[null,null,null,null,7,null,null,null,null,null,null,null,null,0,0,0,0,0,0,0,0,0,0,0,0,0,0,0,0,0,0,0,0,0,0,0,0,0,0,0,0,0,0,0,0,0,0,0,0,0,0,0,0,0,0,0,0,0,0,0,0]
[null,null,null,null,8,null,null,null,null,null,null,null,null,null,0,0,0,0,0,0,0,0,0,0,0,0,0,0,0,0,0,0,0,0,0,0,0,0,0,0,0,0,0,0,0,0,0,0,0,0,0,0,0,0,0,0,0,0,0,0,0]
[null,null,null,null,9,null,null,null,null,null,null,null,null,null,null,0,0,0,0,0,0,0,0,0,0,0,0,0,0,0,0,0,0,0,0,0,0,0,0,0,0,0,0,0,0,0,0,0,0,0,0,0,0,0,0,0,0,0,0,0,0]
[null,null,null,null,10,null,null,null,null,null,null,null,null,null,null,null,0,0,0,0,0,0,0,0,0,0,0,0,0,0,0,0,0,0,0,0,0,0,0,0,0,0,0,0,0,0,0,0,0,0,0,0,0,0,0,0,0,0,0,0,0]
[null,null,{"$f":"Asset33","v":0},null,null,null,0,0,0,0,0,0,0,0,0,0,0,0,0,0,0,0,0,0,0,0,0,0,0,0,0,0,0,0,0,0,0,0,0,0,0,0,0,0,0,0,0,0,0,0,0,0,0,0,0,0,0,0,0,0,0]
[null,{"$f":"C557","v":0},null,"Initial Asset Base",null,null,0,0,0,0,0,0,0,0,0,0,0,0,0,0,0,0,0,0,0,0,0,0,0,0,0,0,0,0,0,0,0,0,0,0,0,0,0,0,0,0,0,0,0,0,0,0,0,0,0,0,0,0,0,0,0]
[null,null,null,"Capex in year",0]
[null,null,null,null,1,null,null,0,0,0,0,0,0,0,0,0,0,0,0,0,0,0,0,0,0,0,0,0,0,0,0,0,0,0,0,0,0,0,0,0,0,0,0,0,0,0,0,0,0,0,0,0,0,0,0,0,0,0,0,0,0]
[null,null,null,null,2,null,null,null,0,0,0,0,0,0,0,0,0,0,0,0,0,0,0,0,0,0,0,0,0,0,0,0,0,0,0,0,0,0,0,0,0,0,0,0,0,0,0,0,0,0,0,0,0,0,0,0,0,0,0,0,0]
[null,null,null,null,3,null,null,null,null,0,0,0,0,0,0,0,0,0,0,0,0,0,0,0,0,0,0,0,0,0,0,0,0,0,0,0,0,0,0,0,0,0,0,0,0,0,0,0,0,0,0,0,0,0,0,0,0,0,0,0,0]
[null,null,null,null,4,null,null,null,null,null,0,0,0,0,0,0,0,0,0,0,0,0,0,0,0,0,0,0,0,0,0,0,0,0,0,0,0,0,0,0,0,0,0,0,0,0,0,0,0,0,0,0,0,0,0,0,0,0,0,0,0]
[null,null,null,null,5,null,null,null,null,null,null,0,0,0,0,0,0,0,0,0,0,0,0,0,0,0,0,0,0,0,0,0,0,0,0,0,0,0,0,0,0,0,0,0,0,0,0,0,0,0,0,0,0,0,0,0,0,0,0,0,0]
[null,null,null,null,6,null,null,null,null,null,null,null,0,0,0,0,0,0,0,0,0,0,0,0,0,0,0,0,0,0,0,0,0,0,0,0,0,0,0,0,0,0,0,0,0,0,0,0,0,0,0,0,0,0,0,0,0,0,0,0,0]
[null,null,null,null,7,null,null,null,null,null,null,null,null,0,0,0,0,0,0,0,0,0,0,0,0,0,0,0,0,0,0,0,0,0,0,0,0,0,0,0,0,0,0,0,0,0,0,0,0,0,0,0,0,0,0,0,0,0,0,0,0]
[null,null,null,null,8,null,null,null,null,null,null,null,null,null,0,0,0,0,0,0,0,0,0,0,0,0,0,0,0,0,0,0,0,0,0,0,0,0,0,0,0,0,0,0,0,0,0,0,0,0,0,0,0,0,0,0,0,0,0,0,0]
[null,null,null,null,9,null,null,null,null,null,null,null,null,null,null,0,0,0,0,0,0,0,0,0,0,0,0,0,0,0,0,0,0,0,0,0,0,0,0,0,0,0,0,0,0,0,0,0,0,0,0,0,0,0,0,0,0,0,0,0,0]
[null,null,null,null,10,null,null,null,null,null,null,null,null,null,null,null,0,0,0,0,0,0,0,0,0,0,0,0,0,0,0,0,0,0,0,0,0,0,0,0,0,0,0,0,0,0,0,0,0,0,0,0,0,0,0,0,0,0,0,0,0]
[null,null,{"$f":"Asset34","v":0},null,null,null,0,0,0,0,0,0,0,0,0,0,0,0,0,0,0,0,0,0,0,0,0,0,0,0,0,0,0,0,0,0,0,0,0,0,0,0,0,0,0,0,0,0,0,0,0,0,0,0,0,0,0,0,0,0,0]
[null,{"$f":"C570","v":0},null,"Initial Asset Base",null,null,0,0,0,0,0,0,0,0,0,0,0,0,0,0,0,0,0,0,0,0,0,0,0,0,0,0,0,0,0,0,0,0,0,0,0,0,0,0,0,0,0,0,0,0,0,0,0,0,0,0,0,0,0,0,0]
[null,null,null,"Capex in year",0]
[null,null,null,null,1,null,null,0,0,0,0,0,0,0,0,0,0,0,0,0,0,0,0,0,0,0,0,0,0,0,0,0,0,0,0,0,0,0,0,0,0,0,0,0,0,0,0,0,0,0,0,0,0,0,0,0,0,0,0,0,0]
[null,null,null,null,2,null,null,null,0,0,0,0,0,0,0,0,0,0,0,0,0,0,0,0,0,0,0,0,0,0,0,0,0,0,0,0,0,0,0,0,0,0,0,0,0,0,0,0,0,0,0,0,0,0,0,0,0,0,0,0,0]
[null,null,null,null,3,null,null,null,null,0,0,0,0,0,0,0,0,0,0,0,0,0,0,0,0,0,0,0,0,0,0,0,0,0,0,0,0,0,0,0,0,0,0,0,0,0,0,0,0,0,0,0,0,0,0,0,0,0,0,0,0]
[null,null,null,null,4,null,null,null,null,null,0,0,0,0,0,0,0,0,0,0,0,0,0,0,0,0,0,0,0,0,0,0,0,0,0,0,0,0,0,0,0,0,0,0,0,0,0,0,0,0,0,0,0,0,0,0,0,0,0,0,0]
[null,null,null,null,5,null,null,null,null,null,null,0,0,0,0,0,0,0,0,0,0,0,0,0,0,0,0,0,0,0,0,0,0,0,0,0,0,0,0,0,0,0,0,0,0,0,0,0,0,0,0,0,0,0,0,0,0,0,0,0,0]
[null,null,null,null,6,null,null,null,null,null,null,null,0,0,0,0,0,0,0,0,0,0,0,0,0,0,0,0,0,0,0,0,0,0,0,0,0,0,0,0,0,0,0,0,0,0,0,0,0,0,0,0,0,0,0,0,0,0,0,0,0]
[null,null,null,null,7,null,null,null,null,null,null,null,null,0,0,0,0,0,0,0,0,0,0,0,0,0,0,0,0,0,0,0,0,0,0,0,0,0,0,0,0,0,0,0,0,0,0,0,0,0,0,0,0,0,0,0,0,0,0,0,0]
[null,null,null,null,8,null,null,null,null,null,null,null,null,null,0,0,0,0,0,0,0,0,0,0,0,0,0,0,0,0,0,0,0,0,0,0,0,0,0,0,0,0,0,0,0,0,0,0,0,0,0,0,0,0,0,0,0,0,0,0,0]
[null,null,null,null,9,null,null,null,null,null,null,null,null,null,null,0,0,0,0,0,0,0,0,0,0,0,0,0,0,0,0,0,0,0,0,0,0,0,0,0,0,0,0,0,0,0,0,0,0,0,0,0,0,0,0,0,0,0,0,0,0]
[null,null,null,null,10,null,null,null,null,null,null,null,null,null,null,null,0,0,0,0,0,0,0,0,0,0,0,0,0,0,0,0,0,0,0,0,0,0,0,0,0,0,0,0,0,0,0,0,0,0,0,0,0,0,0,0,0,0,0,0,0]
[null,null,{"$f":"Asset35","v":0},null,null,null,0,0,0,0,0,0,0,0,0,0,0,0,0,0,0,0,0,0,0,0,0,0,0,0,0,0,0,0,0,0,0,0,0,0,0,0,0,0,0,0,0,0,0,0,0,0,0,0,0,0,0,0,0,0,0]
[null,{"$f":"C583","v":0},null,"Initial Asset Base",null,null,0,0,0,0,0,0,0,0,0,0,0,0,0,0,0,0,0,0,0,0,0,0,0,0,0,0,0,0,0,0,0,0,0,0,0,0,0,0,0,0,0,0,0,0,0,0,0,0,0,0,0,0,0,0,0]
[null,null,null,"Capex in year",0]
[null,null,null,null,1,null,null,0,0,0,0,0,0,0,0,0,0,0,0,0,0,0,0,0,0,0,0,0,0,0,0,0,0,0,0,0,0,0,0,0,0,0,0,0,0,0,0,0,0,0,0,0,0,0,0,0,0,0,0,0,0]
[null,null,null,null,2,null,null,null,0,0,0,0,0,0,0,0,0,0,0,0,0,0,0,0,0,0,0,0,0,0,0,0,0,0,0,0,0,0,0,0,0,0,0,0,0,0,0,0,0,0,0,0,0,0,0,0,0,0,0,0,0]
[null,null,null,null,3,null,null,null,null,0,0,0,0,0,0,0,0,0,0,0,0,0,0,0,0,0,0,0,0,0,0,0,0,0,0,0,0,0,0,0,0,0,0,0,0,0,0,0,0,0,0,0,0,0,0,0,0,0,0,0,0]
[null,null,null,null,4,null,null,null,null,null,0,0,0,0,0,0,0,0,0,0,0,0,0,0,0,0,0,0,0,0,0,0,0,0,0,0,0,0,0,0,0,0,0,0,0,0,0,0,0,0,0,0,0,0,0,0,0,0,0,0,0]
[null,null,null,null,5,null,null,null,null,null,null,0,0,0,0,0,0,0,0,0,0,0,0,0,0,0,0,0,0,0,0,0,0,0,0,0,0,0,0,0,0,0,0,0,0,0,0,0,0,0,0,0,0,0,0,0,0,0,0,0,0]
[null,null,null,null,6,null,null,null,null,null,null,null,0,0,0,0,0,0,0,0,0,0,0,0,0,0,0,0,0,0,0,0,0,0,0,0,0,0,0,0,0,0,0,0,0,0,0,0,0,0,0,0,0,0,0,0,0,0,0,0,0]
[null,null,null,null,7,null,null,null,null,null,null,null,null,0,0,0,0,0,0,0,0,0,0,0,0,0,0,0,0,0,0,0,0,0,0,0,0,0,0,0,0,0,0,0,0,0,0,0,0,0,0,0,0,0,0,0,0,0,0,0,0]
[null,null,null,null,8,null,null,null,null,null,null,null,null,null,0,0,0,0,0,0,0,0,0,0,0,0,0,0,0,0,0,0,0,0,0,0,0,0,0,0,0,0,0,0,0,0,0,0,0,0,0,0,0,0,0,0,0,0,0,0,0]
[null,null,null,null,9,null,null,null,null,null,null,null,null,null,null,0,0,0,0,0,0,0,0,0,0,0,0,0,0,0,0,0,0,0,0,0,0,0,0,0,0,0,0,0,0,0,0,0,0,0,0,0,0,0,0,0,0,0,0,0,0]
[null,null,null,null,10,null,null,null,null,null,null,null,null,null,null,null,0,0,0,0,0,0,0,0,0,0,0,0,0,0,0,0,0,0,0,0,0,0,0,0,0,0,0,0,0,0,0,0,0,0,0,0,0,0,0,0,0,0,0,0,0]
[null,null,{"$f":"Asset36","v":0},null,null,null,0,0,0,0,0,0,0,0,0,0,0,0,0,0,0,0,0,0,0,0,0,0,0,0,0,0,0,0,0,0,0,0,0,0,0,0,0,0,0,0,0,0,0,0,0,0,0,0,0,0,0,0,0,0,0]
[null,{"$f":"C596","v":0},null,"Initial Asset Base",null,null,0,0,0,0,0,0,0,0,0,0,0,0,0,0,0,0,0,0,0,0,0,0,0,0,0,0,0,0,0,0,0,0,0,0,0,0,0,0,0,0,0,0,0,0,0,0,0,0,0,0,0,0,0,0,0]
[null,null,null,"Capex in year",0]
[null,null,null,null,1,null,null,0,0,0,0,0,0,0,0,0,0,0,0,0,0,0,0,0,0,0,0,0,0,0,0,0,0,0,0,0,0,0,0,0,0,0,0,0,0,0,0,0,0,0,0,0,0,0,0,0,0,0,0,0,0]
[null,null,null,null,2,null,null,null,0,0,0,0,0,0,0,0,0,0,0,0,0,0,0,0,0,0,0,0,0,0,0,0,0,0,0,0,0,0,0,0,0,0,0,0,0,0,0,0,0,0,0,0,0,0,0,0,0,0,0,0,0]
[null,null,null,null,3,null,null,null,null,0,0,0,0,0,0,0,0,0,0,0,0,0,0,0,0,0,0,0,0,0,0,0,0,0,0,0,0,0,0,0,0,0,0,0,0,0,0,0,0,0,0,0,0,0,0,0,0,0,0,0,0]
[null,null,null,null,4,null,null,null,null,null,0,0,0,0,0,0,0,0,0,0,0,0,0,0,0,0,0,0,0,0,0,0,0,0,0,0,0,0,0,0,0,0,0,0,0,0,0,0,0,0,0,0,0,0,0,0,0,0,0,0,0]
[null,null,null,null,5,null,null,null,null,null,null,0,0,0,0,0,0,0,0,0,0,0,0,0,0,0,0,0,0,0,0,0,0,0,0,0,0,0,0,0,0,0,0,0,0,0,0,0,0,0,0,0,0,0,0,0,0,0,0,0,0]
[null,null,null,null,6,null,null,null,null,null,null,null,0,0,0,0,0,0,0,0,0,0,0,0,0,0,0,0,0,0,0,0,0,0,0,0,0,0,0,0,0,0,0,0,0,0,0,0,0,0,0,0,0,0,0,0,0,0,0,0,0]
[null,null,null,null,7,null,null,null,null,null,null,null,null,0,0,0,0,0,0,0,0,0,0,0,0,0,0,0,0,0,0,0,0,0,0,0,0,0,0,0,0,0,0,0,0,0,0,0,0,0,0,0,0,0,0,0,0,0,0,0,0]
[null,null,null,null,8,null,null,null,null,null,null,null,null,null,0,0,0,0,0,0,0,0,0,0,0,0,0,0,0,0,0,0,0,0,0,0,0,0,0,0,0,0,0,0,0,0,0,0,0,0,0,0,0,0,0,0,0,0,0,0,0]
[null,null,null,null,9,null,null,null,null,null,null,null,null,null,null,0,0,0,0,0,0,0,0,0,0,0,0,0,0,0,0,0,0,0,0,0,0,0,0,0,0,0,0,0,0,0,0,0,0,0,0,0,0,0,0,0,0,0,0,0,0]
[null,null,null,null,10,null,null,null,null,null,null,null,null,null,null,null,0,0,0,0,0,0,0,0,0,0,0,0,0,0,0,0,0,0,0,0,0,0,0,0,0,0,0,0,0,0,0,0,0,0,0,0,0,0,0,0,0,0,0,0,0]
[null,null,{"$f":"Asset37","v":0},null,null,null,0,0,0,0,0,0,0,0,0,0,0,0,0,0,0,0,0,0,0,0,0,0,0,0,0,0,0,0,0,0,0,0,0,0,0,0,0,0,0,0,0,0,0,0,0,0,0,0,0,0,0,0,0,0,0]
[null,{"$f":"C609","v":0},null,"Initial Asset Base",null,null,0,0,0,0,0,0,0,0,0,0,0,0,0,0,0,0,0,0,0,0,0,0,0,0,0,0,0,0,0,0,0,0,0,0,0,0,0,0,0,0,0,0,0,0,0,0,0,0,0,0,0,0,0,0,0]
[null,null,null,"Capex in year",0]
[null,null,null,null,1,null,null,0,0,0,0,0,0,0,0,0,0,0,0,0,0,0,0,0,0,0,0,0,0,0,0,0,0,0,0,0,0,0,0,0,0,0,0,0,0,0,0,0,0,0,0,0,0,0,0,0,0,0,0,0,0]
[null,null,null,null,2,null,null,null,0,0,0,0,0,0,0,0,0,0,0,0,0,0,0,0,0,0,0,0,0,0,0,0,0,0,0,0,0,0,0,0,0,0,0,0,0,0,0,0,0,0,0,0,0,0,0,0,0,0,0,0,0]
[null,null,null,null,3,null,null,null,null,0,0,0,0,0,0,0,0,0,0,0,0,0,0,0,0,0,0,0,0,0,0,0,0,0,0,0,0,0,0,0,0,0,0,0,0,0,0,0,0,0,0,0,0,0,0,0,0,0,0,0,0]
[null,null,null,null,4,null,null,null,null,null,0,0,0,0,0,0,0,0,0,0,0,0,0,0,0,0,0,0,0,0,0,0,0,0,0,0,0,0,0,0,0,0,0,0,0,0,0,0,0,0,0,0,0,0,0,0,0,0,0,0,0]
[null,null,null,null,5,null,null,null,null,null,null,0,0,0,0,0,0,0,0,0,0,0,0,0,0,0,0,0,0,0,0,0,0,0,0,0,0,0,0,0,0,0,0,0,0,0,0,0,0,0,0,0,0,0,0,0,0,0,0,0,0]
[null,null,null,null,6,null,null,null,null,null,null,null,0,0,0,0,0,0,0,0,0,0,0,0,0,0,0,0,0,0,0,0,0,0,0,0,0,0,0,0,0,0,0,0,0,0,0,0,0,0,0,0,0,0,0,0,0,0,0,0,0]
[null,null,null,null,7,null,null,null,null,null,null,null,null,0,0,0,0,0,0,0,0,0,0,0,0,0,0,0,0,0,0,0,0,0,0,0,0,0,0,0,0,0,0,0,0,0,0,0,0,0,0,0,0,0,0,0,0,0,0,0,0]
[null,null,null,null,8,null,null,null,null,null,null,null,null,null,0,0,0,0,0,0,0,0,0,0,0,0,0,0,0,0,0,0,0,0,0,0,0,0,0,0,0,0,0,0,0,0,0,0,0,0,0,0,0,0,0,0,0,0,0,0,0]
[null,null,null,null,9,null,null,null,null,null,null,null,null,null,null,0,0,0,0,0,0,0,0,0,0,0,0,0,0,0,0,0,0,0,0,0,0,0,0,0,0,0,0,0,0,0,0,0,0,0,0,0,0,0,0,0,0,0,0,0,0]
[null,null,null,null,10,null,null,null,null,null,null,null,null,null,null,null,0,0,0,0,0,0,0,0,0,0,0,0,0,0,0,0,0,0,0,0,0,0,0,0,0,0,0,0,0,0,0,0,0,0,0,0,0,0,0,0,0,0,0,0,0]
[null,null,{"$f":"Asset38","v":0},null,null,null,0,0,0,0,0,0,0,0,0,0,0,0,0,0,0,0,0,0,0,0,0,0,0,0,0,0,0,0,0,0,0,0,0,0,0,0,0,0,0,0,0,0,0,0,0,0,0,0,0,0,0,0,0,0,0]
[null,{"$f":"C622","v":0},null,"Initial Asset Base",null,null,0,0,0,0,0,0,0,0,0,0,0,0,0,0,0,0,0,0,0,0,0,0,0,0,0,0,0,0,0,0,0,0,0,0,0,0,0,0,0,0,0,0,0,0,0,0,0,0,0,0,0,0,0,0,0]
[null,null,null,"Capex in year",0]
[null,null,null,null,1,null,null,0,0,0,0,0,0,0,0,0,0,0,0,0,0,0,0,0,0,0,0,0,0,0,0,0,0,0,0,0,0,0,0,0,0,0,0,0,0,0,0,0,0,0,0,0,0,0,0,0,0,0,0,0,0]
[null,null,null,null,2,null,null,null,0,0,0,0,0,0,0,0,0,0,0,0,0,0,0,0,0,0,0,0,0,0,0,0,0,0,0,0,0,0,0,0,0,0,0,0,0,0,0,0,0,0,0,0,0,0,0,0,0,0,0,0,0]
[null,null,null,null,3,null,null,null,null,0,0,0,0,0,0,0,0,0,0,0,0,0,0,0,0,0,0,0,0,0,0,0,0,0,0,0,0,0,0,0,0,0,0,0,0,0,0,0,0,0,0,0,0,0,0,0,0,0,0,0,0]
[null,null,null,null,4,null,null,null,null,null,0,0,0,0,0,0,0,0,0,0,0,0,0,0,0,0,0,0,0,0,0,0,0,0,0,0,0,0,0,0,0,0,0,0,0,0,0,0,0,0,0,0,0,0,0,0,0,0,0,0,0]
[null,null,null,null,5,null,null,null,null,null,null,0,0,0,0,0,0,0,0,0,0,0,0,0,0,0,0,0,0,0,0,0,0,0,0,0,0,0,0,0,0,0,0,0,0,0,0,0,0,0,0,0,0,0,0,0,0,0,0,0,0]
[null,null,null,null,6,null,null,null,null,null,null,null,0,0,0,0,0,0,0,0,0,0,0,0,0,0,0,0,0,0,0,0,0,0,0,0,0,0,0,0,0,0,0,0,0,0,0,0,0,0,0,0,0,0,0,0,0,0,0,0,0]
[null,null,null,null,7,null,null,null,null,null,null,null,null,0,0,0,0,0,0,0,0,0,0,0,0,0,0,0,0,0,0,0,0,0,0,0,0,0,0,0,0,0,0,0,0,0,0,0,0,0,0,0,0,0,0,0,0,0,0,0,0]
[null,null,null,null,8,null,null,null,null,null,null,null,null,null,0,0,0,0,0,0,0,0,0,0,0,0,0,0,0,0,0,0,0,0,0,0,0,0,0,0,0,0,0,0,0,0,0,0,0,0,0,0,0,0,0,0,0,0,0,0,0]
[null,null,null,null,9,null,null,null,null,null,null,null,null,null,null,0,0,0,0,0,0,0,0,0,0,0,0,0,0,0,0,0,0,0,0,0,0,0,0,0,0,0,0,0,0,0,0,0,0,0,0,0,0,0,0,0,0,0,0,0,0]
[null,null,null,null,10,null,null,null,null,null,null,null,null,null,null,null,0,0,0,0,0,0,0,0,0,0,0,0,0,0,0,0,0,0,0,0,0,0,0,0,0,0,0,0,0,0,0,0,0,0,0,0,0,0,0,0,0,0,0,0,0]
[null,null,{"$f":"Asset39","v":0},null,null,null,0,0,0,0,0,0,0,0,0,0,0,0,0,0,0,0,0,0,0,0,0,0,0,0,0,0,0,0,0,0,0,0,0,0,0,0,0,0,0,0,0,0,0,0,0,0,0,0,0,0,0,0,0,0,0]
[null,{"$f":"C635","v":0},null,"Initial Asset Base",null,null,0,0,0,0,0,0,0,0,0,0,0,0,0,0,0,0,0,0,0,0,0,0,0,0,0,0,0,0,0,0,0,0,0,0,0,0,0,0,0,0,0,0,0,0,0,0,0,0,0,0,0,0,0,0,0]
[null,null,null,"Capex in year",0]
[null,null,null,null,1,null,null,0,0,0,0,0,0,0,0,0,0,0,0,0,0,0,0,0,0,0,0,0,0,0,0,0,0,0,0,0,0,0,0,0,0,0,0,0,0,0,0,0,0,0,0,0,0,0,0,0,0,0,0,0,0]
[null,null,null,null,2,null,null,null,0,0,0,0,0,0,0,0,0,0,0,0,0,0,0,0,0,0,0,0,0,0,0,0,0,0,0,0,0,0,0,0,0,0,0,0,0,0,0,0,0,0,0,0,0,0,0,0,0,0,0,0,0]
[null,null,null,null,3,null,null,null,null,0,0,0,0,0,0,0,0,0,0,0,0,0,0,0,0,0,0,0,0,0,0,0,0,0,0,0,0,0,0,0,0,0,0,0,0,0,0,0,0,0,0,0,0,0,0,0,0,0,0,0,0]
[null,null,null,null,4,null,null,null,null,null,0,0,0,0,0,0,0,0,0,0,0,0,0,0,0,0,0,0,0,0,0,0,0,0,0,0,0,0,0,0,0,0,0,0,0,0,0,0,0,0,0,0,0,0,0,0,0,0,0,0,0]
[null,null,null,null,5,null,null,null,null,null,null,0,0,0,0,0,0,0,0,0,0,0,0,0,0,0,0,0,0,0,0,0,0,0,0,0,0,0,0,0,0,0,0,0,0,0,0,0,0,0,0,0,0,0,0,0,0,0,0,0,0]
[null,null,null,null,6,null,null,null,null,null,null,null,0,0,0,0,0,0,0,0,0,0,0,0,0,0,0,0,0,0,0,0,0,0,0,0,0,0,0,0,0,0,0,0,0,0,0,0,0,0,0,0,0,0,0,0,0,0,0,0,0]
[null,null,null,null,7,null,null,null,null,null,null,null,null,0,0,0,0,0,0,0,0,0,0,0,0,0,0,0,0,0,0,0,0,0,0,0,0,0,0,0,0,0,0,0,0,0,0,0,0,0,0,0,0,0,0,0,0,0,0,0,0]
[null,null,null,null,8,null,null,null,null,null,null,null,null,null,0,0,0,0,0,0,0,0,0,0,0,0,0,0,0,0,0,0,0,0,0,0,0,0,0,0,0,0,0,0,0,0,0,0,0,0,0,0,0,0,0,0,0,0,0,0,0]
[null,null,null,null,9,null,null,null,null,null,null,null,null,null,null,0,0,0,0,0,0,0,0,0,0,0,0,0,0,0,0,0,0,0,0,0,0,0,0,0,0,0,0,0,0,0,0,0,0,0,0,0,0,0,0,0,0,0,0,0,0]
[null,null,null,null,10,null,null,null,null,null,null,null,null,null,null,null,0,0,0,0,0,0,0,0,0,0,0,0,0,0,0,0,0,0,0,0,0,0,0,0,0,0,0,0,0,0,0,0,0,0,0,0,0,0,0,0,0,0,0,0,0]
[null,null,{"$f":"Asset40","v":0},null,null,null,0,0,0,0,0,0,0,0,0,0,0,0,0,0,0,0,0,0,0,0,0,0,0,0,0,0,0,0,0,0,0,0,0,0,0,0,0,0,0,0,0,0,0,0,0,0,0,0,0,0,0,0,0,0,0]
[null,{"$f":"C648","v":0},null,"Initial Asset Base",null,null,0,0,0,0,0,0,0,0,0,0,0,0,0,0,0,0,0,0,0,0,0,0,0,0,0,0,0,0,0,0,0,0,0,0,0,0,0,0,0,0,0,0,0,0,0,0,0,0,0,0,0,0,0,0,0]
[null,null,null,"Capex in year",0]
[null,null,null,null,1,null,null,0,0,0,0,0,0,0,0,0,0,0,0,0,0,0,0,0,0,0,0,0,0,0,0,0,0,0,0,0,0,0,0,0,0,0,0,0,0,0,0,0,0,0,0,0,0,0,0,0,0,0,0,0,0]
[null,null,null,null,2,null,null,null,0,0,0,0,0,0,0,0,0,0,0,0,0,0,0,0,0,0,0,0,0,0,0,0,0,0,0,0,0,0,0,0,0,0,0,0,0,0,0,0,0,0,0,0,0,0,0,0,0,0,0,0,0]
[null,null,null,null,3,null,null,null,null,0,0,0,0,0,0,0,0,0,0,0,0,0,0,0,0,0,0,0,0,0,0,0,0,0,0,0,0,0,0,0,0,0,0,0,0,0,0,0,0,0,0,0,0,0,0,0,0,0,0,0,0]
[null,null,null,null,4,null,null,null,null,null,0,0,0,0,0,0,0,0,0,0,0,0,0,0,0,0,0,0,0,0,0,0,0,0,0,0,0,0,0,0,0,0,0,0,0,0,0,0,0,0,0,0,0,0,0,0,0,0,0,0,0]
[null,null,null,null,5,null,null,null,null,null,null,0,0,0,0,0,0,0,0,0,0,0,0,0,0,0,0,0,0,0,0,0,0,0,0,0,0,0,0,0,0,0,0,0,0,0,0,0,0,0,0,0,0,0,0,0,0,0,0,0,0]
[null,null,null,null,6,null,null,null,null,null,null,null,0,0,0,0,0,0,0,0,0,0,0,0,0,0,0,0,0,0,0,0,0,0,0,0,0,0,0,0,0,0,0,0,0,0,0,0,0,0,0,0,0,0,0,0,0,0,0,0,0]
[null,null,null,null,7,null,null,null,null,null,null,null,null,0,0,0,0,0,0,0,0,0,0,0,0,0,0,0,0,0,0,0,0,0,0,0,0,0,0,0,0,0,0,0,0,0,0,0,0,0,0,0,0,0,0,0,0,0,0,0,0]
[null,null,null,null,8,null,null,null,null,null,null,null,null,null,0,0,0,0,0,0,0,0,0,0,0,0,0,0,0,0,0,0,0,0,0,0,0,0,0,0,0,0,0,0,0,0,0,0,0,0,0,0,0,0,0,0,0,0,0,0,0]
[null,null,null,null,9,null,null,null,null,null,null,null,null,null,null,0,0,0,0,0,0,0,0,0,0,0,0,0,0,0,0,0,0,0,0,0,0,0,0,0,0,0,0,0,0,0,0,0,0,0,0,0,0,0,0,0,0,0,0,0,0]
[null,null,null,null,10,null,null,null,null,null,null,null,null,null,null,null,0,0,0,0,0,0,0,0,0,0,0,0,0,0,0,0,0,0,0,0,0,0,0,0,0,0,0,0,0,0,0,0,0,0,0,0,0,0,0,0,0,0,0,0,0]
[null,null,{"$f":"Asset41","v":0},null,null,null,0,0,0,0,0,0,0,0,0,0,0,0,0,0,0,0,0,0,0,0,0,0,0,0,0,0,0,0,0,0,0,0,0,0,0,0,0,0,0,0,0,0,0,0,0,0,0,0,0,0,0,0,0,0,0]
[null,{"$f":"C661","v":0},null,"Initial Asset Base",null,null,0,0,0,0,0,0,0,0,0,0,0,0,0,0,0,0,0,0,0,0,0,0,0,0,0,0,0,0,0,0,0,0,0,0,0,0,0,0,0,0,0,0,0,0,0,0,0,0,0,0,0,0,0,0,0]
[null,null,null,"Capex in year",0]
[null,null,null,null,1,null,null,0,0,0,0,0,0,0,0,0,0,0,0,0,0,0,0,0,0,0,0,0,0,0,0,0,0,0,0,0,0,0,0,0,0,0,0,0,0,0,0,0,0,0,0,0,0,0,0,0,0,0,0,0,0]
[null,null,null,null,2,null,null,null,0,0,0,0,0,0,0,0,0,0,0,0,0,0,0,0,0,0,0,0,0,0,0,0,0,0,0,0,0,0,0,0,0,0,0,0,0,0,0,0,0,0,0,0,0,0,0,0,0,0,0,0,0]
[null,null,null,null,3,null,null,null,null,0,0,0,0,0,0,0,0,0,0,0,0,0,0,0,0,0,0,0,0,0,0,0,0,0,0,0,0,0,0,0,0,0,0,0,0,0,0,0,0,0,0,0,0,0,0,0,0,0,0,0,0]
[null,null,null,null,4,null,null,null,null,null,0,0,0,0,0,0,0,0,0,0,0,0,0,0,0,0,0,0,0,0,0,0,0,0,0,0,0,0,0,0,0,0,0,0,0,0,0,0,0,0,0,0,0,0,0,0,0,0,0,0,0]
[null,null,null,null,5,null,null,null,null,null,null,0,0,0,0,0,0,0,0,0,0,0,0,0,0,0,0,0,0,0,0,0,0,0,0,0,0,0,0,0,0,0,0,0,0,0,0,0,0,0,0,0,0,0,0,0,0,0,0,0,0]
[null,null,null,null,6,null,null,null,null,null,null,null,0,0,0,0,0,0,0,0,0,0,0,0,0,0,0,0,0,0,0,0,0,0,0,0,0,0,0,0,0,0,0,0,0,0,0,0,0,0,0,0,0,0,0,0,0,0,0,0,0]
[null,null,null,null,7,null,null,null,null,null,null,null,null,0,0,0,0,0,0,0,0,0,0,0,0,0,0,0,0,0,0,0,0,0,0,0,0,0,0,0,0,0,0,0,0,0,0,0,0,0,0,0,0,0,0,0,0,0,0,0,0]
[null,null,null,null,8,null,null,null,null,null,null,null,null,null,0,0,0,0,0,0,0,0,0,0,0,0,0,0,0,0,0,0,0,0,0,0,0,0,0,0,0,0,0,0,0,0,0,0,0,0,0,0,0,0,0,0,0,0,0,0,0]
[null,null,null,null,9,null,null,null,null,null,null,null,null,null,null,0,0,0,0,0,0,0,0,0,0,0,0,0,0,0,0,0,0,0,0,0,0,0,0,0,0,0,0,0,0,0,0,0,0,0,0,0,0,0,0,0,0,0,0,0,0]
[null,null,null,null,10,null,null,null,null,null,null,null,null,null,null,null,0,0,0,0,0,0,0,0,0,0,0,0,0,0,0,0,0,0,0,0,0,0,0,0,0,0,0,0,0,0,0,0,0,0,0,0,0,0,0,0,0,0,0,0,0]
[null,null,{"$f":"Asset42","v":0},null,null,null,0,0,0,0,0,0,0,0,0,0,0,0,0,0,0,0,0,0,0,0,0,0,0,0,0,0,0,0,0,0,0,0,0,0,0,0,0,0,0,0,0,0,0,0,0,0,0,0,0,0,0,0,0,0,0]
[null,{"$f":"C674","v":0},null,"Initial Asset Base",null,null,0,0,0,0,0,0,0,0,0,0,0,0,0,0,0,0,0,0,0,0,0,0,0,0,0,0,0,0,0,0,0,0,0,0,0,0,0,0,0,0,0,0,0,0,0,0,0,0,0,0,0,0,0,0,0]
[null,null,null,"Capex in year",0]
[null,null,null,null,1,null,null,0,0,0,0,0,0,0,0,0,0,0,0,0,0,0,0,0,0,0,0,0,0,0,0,0,0,0,0,0,0,0,0,0,0,0,0,0,0,0,0,0,0,0,0,0,0,0,0,0,0,0,0,0,0]
[null,null,null,null,2,null,null,null,0,0,0,0,0,0,0,0,0,0,0,0,0,0,0,0,0,0,0,0,0,0,0,0,0,0,0,0,0,0,0,0,0,0,0,0,0,0,0,0,0,0,0,0,0,0,0,0,0,0,0,0,0]
[null,null,null,null,3,null,null,null,null,0,0,0,0,0,0,0,0,0,0,0,0,0,0,0,0,0,0,0,0,0,0,0,0,0,0,0,0,0,0,0,0,0,0,0,0,0,0,0,0,0,0,0,0,0,0,0,0,0,0,0,0]
[null,null,null,null,4,null,null,null,null,null,0,0,0,0,0,0,0,0,0,0,0,0,0,0,0,0,0,0,0,0,0,0,0,0,0,0,0,0,0,0,0,0,0,0,0,0,0,0,0,0,0,0,0,0,0,0,0,0,0,0,0]
[null,null,null,null,5,null,null,null,null,null,null,0,0,0,0,0,0,0,0,0,0,0,0,0,0,0,0,0,0,0,0,0,0,0,0,0,0,0,0,0,0,0,0,0,0,0,0,0,0,0,0,0,0,0,0,0,0,0,0,0,0]
[null,null,null,null,6,null,null,null,null,null,null,null,0,0,0,0,0,0,0,0,0,0,0,0,0,0,0,0,0,0,0,0,0,0,0,0,0,0,0,0,0,0,0,0,0,0,0,0,0,0,0,0,0,0,0,0,0,0,0,0,0]
[null,null,null,null,7,null,null,null,null,null,null,null,null,0,0,0,0,0,0,0,0,0,0,0,0,0,0,0,0,0,0,0,0,0,0,0,0,0,0,0,0,0,0,0,0,0,0,0,0,0,0,0,0,0,0,0,0,0,0,0,0]
[null,null,null,null,8,null,null,null,null,null,null,null,null,null,0,0,0,0,0,0,0,0,0,0,0,0,0,0,0,0,0,0,0,0,0,0,0,0,0,0,0,0,0,0,0,0,0,0,0,0,0,0,0,0,0,0,0,0,0,0,0]
[null,null,null,null,9,null,null,null,null,null,null,null,null,null,null,0,0,0,0,0,0,0,0,0,0,0,0,0,0,0,0,0,0,0,0,0,0,0,0,0,0,0,0,0,0,0,0,0,0,0,0,0,0,0,0,0,0,0,0,0,0]
[null,null,null,null,10,null,null,null,null,null,null,null,null,null,null,null,0,0,0,0,0,0,0,0,0,0,0,0,0,0,0,0,0,0,0,0,0,0,0,0,0,0,0,0,0,0,0,0,0,0,0,0,0,0,0,0,0,0,0,0,0]
[null,null,{"$f":"Asset43","v":0},null,null,null,0,0,0,0,0,0,0,0,0,0,0,0,0,0,0,0,0,0,0,0,0,0,0,0,0,0,0,0,0,0,0,0,0,0,0,0,0,0,0,0,0,0,0,0,0,0,0,0,0,0,0,0,0,0,0]
[null,{"$f":"C687","v":0},null,"Initial Asset Base",null,null,0,0,0,0,0,0,0,0,0,0,0,0,0,0,0,0,0,0,0,0,0,0,0,0,0,0,0,0,0,0,0,0,0,0,0,0,0,0,0,0,0,0,0,0,0,0,0,0,0,0,0,0,0,0,0]
[null,null,null,"Capex in year",0]
[null,null,null,null,1,null,null,0,0,0,0,0,0,0,0,0,0,0,0,0,0,0,0,0,0,0,0,0,0,0,0,0,0,0,0,0,0,0,0,0,0,0,0,0,0,0,0,0,0,0,0,0,0,0,0,0,0,0,0,0,0]
[null,null,null,null,2,null,null,null,0,0,0,0,0,0,0,0,0,0,0,0,0,0,0,0,0,0,0,0,0,0,0,0,0,0,0,0,0,0,0,0,0,0,0,0,0,0,0,0,0,0,0,0,0,0,0,0,0,0,0,0,0]
[null,null,null,null,3,null,null,null,null,0,0,0,0,0,0,0,0,0,0,0,0,0,0,0,0,0,0,0,0,0,0,0,0,0,0,0,0,0,0,0,0,0,0,0,0,0,0,0,0,0,0,0,0,0,0,0,0,0,0,0,0]
[null,null,null,null,4,null,null,null,null,null,0,0,0,0,0,0,0,0,0,0,0,0,0,0,0,0,0,0,0,0,0,0,0,0,0,0,0,0,0,0,0,0,0,0,0,0,0,0,0,0,0,0,0,0,0,0,0,0,0,0,0]
[null,null,null,null,5,null,null,null,null,null,null,0,0,0,0,0,0,0,0,0,0,0,0,0,0,0,0,0,0,0,0,0,0,0,0,0,0,0,0,0,0,0,0,0,0,0,0,0,0,0,0,0,0,0,0,0,0,0,0,0,0]
[null,null,null,null,6,null,null,null,null,null,null,null,0,0,0,0,0,0,0,0,0,0,0,0,0,0,0,0,0,0,0,0,0,0,0,0,0,0,0,0,0,0,0,0,0,0,0,0,0,0,0,0,0,0,0,0,0,0,0,0,0]
[null,null,null,null,7,null,null,null,null,null,null,null,null,0,0,0,0,0,0,0,0,0,0,0,0,0,0,0,0,0,0,0,0,0,0,0,0,0,0,0,0,0,0,0,0,0,0,0,0,0,0,0,0,0,0,0,0,0,0,0,0]
[null,null,null,null,8,null,null,null,null,null,null,null,null,null,0,0,0,0,0,0,0,0,0,0,0,0,0,0,0,0,0,0,0,0,0,0,0,0,0,0,0,0,0,0,0,0,0,0,0,0,0,0,0,0,0,0,0,0,0,0,0]
[null,null,null,null,9,null,null,null,null,null,null,null,null,null,null,0,0,0,0,0,0,0,0,0,0,0,0,0,0,0,0,0,0,0,0,0,0,0,0,0,0,0,0,0,0,0,0,0,0,0,0,0,0,0,0,0,0,0,0,0,0]
[null,null,null,null,10,null,null,null,null,null,null,null,null,null,null,null,0,0,0,0,0,0,0,0,0,0,0,0,0,0,0,0,0,0,0,0,0,0,0,0,0,0,0,0,0,0,0,0,0,0,0,0,0,0,0,0,0,0,0,0,0]
[null,null,{"$f":"Asset44","v":0},null,null,null,0,0,0,0,0,0,0,0,0,0,0,0,0,0,0,0,0,0,0,0,0,0,0,0,0,0,0,0,0,0,0,0,0,0,0,0,0,0,0,0,0,0,0,0,0,0,0,0,0,0,0,0,0,0,0]
[null,{"$f":"C700","v":0},null,"Initial Asset Base",null,null,0,0,0,0,0,0,0,0,0,0,0,0,0,0,0,0,0,0,0,0,0,0,0,0,0,0,0,0,0,0,0,0,0,0,0,0,0,0,0,0,0,0,0,0,0,0,0,0,0,0,0,0,0,0,0]
[null,null,null,"Capex in year",0]
[null,null,null,null,1,null,null,0,0,0,0,0,0,0,0,0,0,0,0,0,0,0,0,0,0,0,0,0,0,0,0,0,0,0,0,0,0,0,0,0,0,0,0,0,0,0,0,0,0,0,0,0,0,0,0,0,0,0,0,0,0]
[null,null,null,null,2,null,null,null,0,0,0,0,0,0,0,0,0,0,0,0,0,0,0,0,0,0,0,0,0,0,0,0,0,0,0,0,0,0,0,0,0,0,0,0,0,0,0,0,0,0,0,0,0,0,0,0,0,0,0,0,0]
[null,null,null,null,3,null,null,null,null,0,0,0,0,0,0,0,0,0,0,0,0,0,0,0,0,0,0,0,0,0,0,0,0,0,0,0,0,0,0,0,0,0,0,0,0,0,0,0,0,0,0,0,0,0,0,0,0,0,0,0,0]
[null,null,null,null,4,null,null,null,null,null,0,0,0,0,0,0,0,0,0,0,0,0,0,0,0,0,0,0,0,0,0,0,0,0,0,0,0,0,0,0,0,0,0,0,0,0,0,0,0,0,0,0,0,0,0,0,0,0,0,0,0]
[null,null,null,null,5,null,null,null,null,null,null,0,0,0,0,0,0,0,0,0,0,0,0,0,0,0,0,0,0,0,0,0,0,0,0,0,0,0,0,0,0,0,0,0,0,0,0,0,0,0,0,0,0,0,0,0,0,0,0,0,0]
[null,null,null,null,6,null,null,null,null,null,null,null,0,0,0,0,0,0,0,0,0,0,0,0,0,0,0,0,0,0,0,0,0,0,0,0,0,0,0,0,0,0,0,0,0,0,0,0,0,0,0,0,0,0,0,0,0,0,0,0,0]
[null,null,null,null,7,null,null,null,null,null,null,null,null,0,0,0,0,0,0,0,0,0,0,0,0,0,0,0,0,0,0,0,0,0,0,0,0,0,0,0,0,0,0,0,0,0,0,0,0,0,0,0,0,0,0,0,0,0,0,0,0]
[null,null,null,null,8,null,null,null,null,null,null,null,null,null,0,0,0,0,0,0,0,0,0,0,0,0,0,0,0,0,0,0,0,0,0,0,0,0,0,0,0,0,0,0,0,0,0,0,0,0,0,0,0,0,0,0,0,0,0,0,0]
[null,null,null,null,9,null,null,null,null,null,null,null,null,null,null,0,0,0,0,0,0,0,0,0,0,0,0,0,0,0,0,0,0,0,0,0,0,0,0,0,0,0,0,0,0,0,0,0,0,0,0,0,0,0,0,0,0,0,0,0,0]
[null,null,null,null,10,null,null,null,null,null,null,null,null,null,null,null,0,0,0,0,0,0,0,0,0,0,0,0,0,0,0,0,0,0,0,0,0,0,0,0,0,0,0,0,0,0,0,0,0,0,0,0,0,0,0,0,0,0,0,0,0]
[null,null,{"$f":"Asset45","v":0},null,null,null,0,0,0,0,0,0,0,0,0,0,0,0,0,0,0,0,0,0,0,0,0,0,0,0,0,0,0,0,0,0,0,0,0,0,0,0,0,0,0,0,0,0,0,0,0,0,0,0,0,0,0,0,0,0,0]
[null,{"$f":"C713","v":0},null,"Initial Asset Base",null,null,0,0,0,0,0,0,0,0,0,0,0,0,0,0,0,0,0,0,0,0,0,0,0,0,0,0,0,0,0,0,0,0,0,0,0,0,0,0,0,0,0,0,0,0,0,0,0,0,0,0,0,0,0,0,0]
[null,null,null,"Capex in year",0]
[null,null,null,null,1,null,null,0,0,0,0,0,0,0,0,0,0,0,0,0,0,0,0,0,0,0,0,0,0,0,0,0,0,0,0,0,0,0,0,0,0,0,0,0,0,0,0,0,0,0,0,0,0,0,0,0,0,0,0,0,0]
[null,null,null,null,2,null,null,null,0,0,0,0,0,0,0,0,0,0,0,0,0,0,0,0,0,0,0,0,0,0,0,0,0,0,0,0,0,0,0,0,0,0,0,0,0,0,0,0,0,0,0,0,0,0,0,0,0,0,0,0,0]
[null,null,null,null,3,null,null,null,null,0,0,0,0,0,0,0,0,0,0,0,0,0,0,0,0,0,0,0,0,0,0,0,0,0,0,0,0,0,0,0,0,0,0,0,0,0,0,0,0,0,0,0,0,0,0,0,0,0,0,0,0]
[null,null,null,null,4,null,null,null,null,null,0,0,0,0,0,0,0,0,0,0,0,0,0,0,0,0,0,0,0,0,0,0,0,0,0,0,0,0,0,0,0,0,0,0,0,0,0,0,0,0,0,0,0,0,0,0,0,0,0,0,0]
[null,null,null,null,5,null,null,null,null,null,null,0,0,0,0,0,0,0,0,0,0,0,0,0,0,0,0,0,0,0,0,0,0,0,0,0,0,0,0,0,0,0,0,0,0,0,0,0,0,0,0,0,0,0,0,0,0,0,0,0,0]
[null,null,null,null,6,null,null,null,null,null,null,null,0,0,0,0,0,0,0,0,0,0,0,0,0,0,0,0,0,0,0,0,0,0,0,0,0,0,0,0,0,0,0,0,0,0,0,0,0,0,0,0,0,0,0,0,0,0,0,0,0]
[null,null,null,null,7,null,null,null,null,null,null,null,null,0,0,0,0,0,0,0,0,0,0,0,0,0,0,0,0,0,0,0,0,0,0,0,0,0,0,0,0,0,0,0,0,0,0,0,0,0,0,0,0,0,0,0,0,0,0,0,0]
[null,null,null,null,8,null,null,null,null,null,null,null,null,null,0,0,0,0,0,0,0,0,0,0,0,0,0,0,0,0,0,0,0,0,0,0,0,0,0,0,0,0,0,0,0,0,0,0,0,0,0,0,0,0,0,0,0,0,0,0,0]
[null,null,null,null,9,null,null,null,null,null,null,null,null,null,null,0,0,0,0,0,0,0,0,0,0,0,0,0,0,0,0,0,0,0,0,0,0,0,0,0,0,0,0,0,0,0,0,0,0,0,0,0,0,0,0,0,0,0,0,0,0]
[null,null,null,null,10,null,null,null,null,null,null,null,null,null,null,null,0,0,0,0,0,0,0,0,0,0,0,0,0,0,0,0,0,0,0,0,0,0,0,0,0,0,0,0,0,0,0,0,0,0,0,0,0,0,0,0,0,0,0,0,0]
[null,null,{"$f":"Asset46","v":0},null,null,null,0,0,0,0,0,0,0,0,0,0,0,0,0,0,0,0,0,0,0,0,0,0,0,0,0,0,0,0,0,0,0,0,0,0,0,0,0,0,0,0,0,0,0,0,0,0,0,0,0,0,0,0,0,0,0]
[null,{"$f":"C726","v":0},null,"Initial Asset Base",null,null,0,0,0,0,0,0,0,0,0,0,0,0,0,0,0,0,0,0,0,0,0,0,0,0,0,0,0,0,0,0,0,0,0,0,0,0,0,0,0,0,0,0,0,0,0,0,0,0,0,0,0,0,0,0,0]
[null,null,null,"Capex in year",0]
[null,null,null,null,1,null,null,0,0,0,0,0,0,0,0,0,0,0,0,0,0,0,0,0,0,0,0,0,0,0,0,0,0,0,0,0,0,0,0,0,0,0,0,0,0,0,0,0,0,0,0,0,0,0,0,0,0,0,0,0,0]
[null,null,null,null,2,null,null,null,0,0,0,0,0,0,0,0,0,0,0,0,0,0,0,0,0,0,0,0,0,0,0,0,0,0,0,0,0,0,0,0,0,0,0,0,0,0,0,0,0,0,0,0,0,0,0,0,0,0,0,0,0]
[null,null,null,null,3,null,null,null,null,0,0,0,0,0,0,0,0,0,0,0,0,0,0,0,0,0,0,0,0,0,0,0,0,0,0,0,0,0,0,0,0,0,0,0,0,0,0,0,0,0,0,0,0,0,0,0,0,0,0,0,0]
[null,null,null,null,4,null,null,null,null,null,0,0,0,0,0,0,0,0,0,0,0,0,0,0,0,0,0,0,0,0,0,0,0,0,0,0,0,0,0,0,0,0,0,0,0,0,0,0,0,0,0,0,0,0,0,0,0,0,0,0,0]
[null,null,null,null,5,null,null,null,null,null,null,0,0,0,0,0,0,0,0,0,0,0,0,0,0,0,0,0,0,0,0,0,0,0,0,0,0,0,0,0,0,0,0,0,0,0,0,0,0,0,0,0,0,0,0,0,0,0,0,0,0]
[null,null,null,null,6,null,null,null,null,null,null,null,0,0,0,0,0,0,0,0,0,0,0,0,0,0,0,0,0,0,0,0,0,0,0,0,0,0,0,0,0,0,0,0,0,0,0,0,0,0,0,0,0,0,0,0,0,0,0,0,0]
[null,null,null,null,7,null,null,null,null,null,null,null,null,0,0,0,0,0,0,0,0,0,0,0,0,0,0,0,0,0,0,0,0,0,0,0,0,0,0,0,0,0,0,0,0,0,0,0,0,0,0,0,0,0,0,0,0,0,0,0,0]
[null,null,null,null,8,null,null,null,null,null,null,null,null,null,0,0,0,0,0,0,0,0,0,0,0,0,0,0,0,0,0,0,0,0,0,0,0,0,0,0,0,0,0,0,0,0,0,0,0,0,0,0,0,0,0,0,0,0,0,0,0]
[null,null,null,null,9,null,null,null,null,null,null,null,null,null,null,0,0,0,0,0,0,0,0,0,0,0,0,0,0,0,0,0,0,0,0,0,0,0,0,0,0,0,0,0,0,0,0,0,0,0,0,0,0,0,0,0,0,0,0,0,0]
[null,null,null,null,10,null,null,null,null,null,null,null,null,null,null,null,0,0,0,0,0,0,0,0,0,0,0,0,0,0,0,0,0,0,0,0,0,0,0,0,0,0,0,0,0,0,0,0,0,0,0,0,0,0,0,0,0,0,0,0,0]
[null,null,{"$f":"Asset47","v":0},null,null,null,0,0,0,0,0,0,0,0,0,0,0,0,0,0,0,0,0,0,0,0,0,0,0,0,0,0,0,0,0,0,0,0,0,0,0,0,0,0,0,0,0,0,0,0,0,0,0,0,0,0,0,0,0,0,0]
[null,{"$f":"C739","v":0},null,"Initial Asset Base",null,null,0,0,0,0,0,0,0,0,0,0,0,0,0,0,0,0,0,0,0,0,0,0,0,0,0,0,0,0,0,0,0,0,0,0,0,0,0,0,0,0,0,0,0,0,0,0,0,0,0,0,0,0,0,0,0]
[null,null,null,"Capex in year",0]
[null,null,null,null,1,null,null,0,0,0,0,0,0,0,0,0,0,0,0,0,0,0,0,0,0,0,0,0,0,0,0,0,0,0,0,0,0,0,0,0,0,0,0,0,0,0,0,0,0,0,0,0,0,0,0,0,0,0,0,0,0]
[null,null,null,null,2,null,null,null,0,0,0,0,0,0,0,0,0,0,0,0,0,0,0,0,0,0,0,0,0,0,0,0,0,0,0,0,0,0,0,0,0,0,0,0,0,0,0,0,0,0,0,0,0,0,0,0,0,0,0,0,0]
[null,null,null,null,3,null,null,null,null,0,0,0,0,0,0,0,0,0,0,0,0,0,0,0,0,0,0,0,0,0,0,0,0,0,0,0,0,0,0,0,0,0,0,0,0,0,0,0,0,0,0,0,0,0,0,0,0,0,0,0,0]
[null,null,null,null,4,null,null,null,null,null,0,0,0,0,0,0,0,0,0,0,0,0,0,0,0,0,0,0,0,0,0,0,0,0,0,0,0,0,0,0,0,0,0,0,0,0,0,0,0,0,0,0,0,0,0,0,0,0,0,0,0]
[null,null,null,null,5,null,null,null,null,null,null,0,0,0,0,0,0,0,0,0,0,0,0,0,0,0,0,0,0,0,0,0,0,0,0,0,0,0,0,0,0,0,0,0,0,0,0,0,0,0,0,0,0,0,0,0,0,0,0,0,0]
[null,null,null,null,6,null,null,null,null,null,null,null,0,0,0,0,0,0,0,0,0,0,0,0,0,0,0,0,0,0,0,0,0,0,0,0,0,0,0,0,0,0,0,0,0,0,0,0,0,0,0,0,0,0,0,0,0,0,0,0,0]
[null,null,null,null,7,null,null,null,null,null,null,null,null,0,0,0,0,0,0,0,0,0,0,0,0,0,0,0,0,0,0,0,0,0,0,0,0,0,0,0,0,0,0,0,0,0,0,0,0,0,0,0,0,0,0,0,0,0,0,0,0]
[null,null,null,null,8,null,null,null,null,null,null,null,null,null,0,0,0,0,0,0,0,0,0,0,0,0,0,0,0,0,0,0,0,0,0,0,0,0,0,0,0,0,0,0,0,0,0,0,0,0,0,0,0,0,0,0,0,0,0,0,0]
[null,null,null,null,9,null,null,null,null,null,null,null,null,null,null,0,0,0,0,0,0,0,0,0,0,0,0,0,0,0,0,0,0,0,0,0,0,0,0,0,0,0,0,0,0,0,0,0,0,0,0,0,0,0,0,0,0,0,0,0,0]
[null,null,null,null,10,null,null,null,null,null,null,null,null,null,null,null,0,0,0,0,0,0,0,0,0,0,0,0,0,0,0,0,0,0,0,0,0,0,0,0,0,0,0,0,0,0,0,0,0,0,0,0,0,0,0,0,0,0,0,0,0]
[null,null,{"$f":"Asset48","v":0},null,null,null,0,0,0,0,0,0,0,0,0,0,0,0,0,0,0,0,0,0,0,0,0,0,0,0,0,0,0,0,0,0,0,0,0,0,0,0,0,0,0,0,0,0,0,0,0,0,0,0,0,0,0,0,0,0,0]
[null,{"$f":"C752","v":0},null,"Initial Asset Base",null,null,0,0,0,0,0,0,0,0,0,0,0,0,0,0,0,0,0,0,0,0,0,0,0,0,0,0,0,0,0,0,0,0,0,0,0,0,0,0,0,0,0,0,0,0,0,0,0,0,0,0,0,0,0,0,0]
[null,null,null,"Capex in year",0]
[null,null,null,null,1,null,null,0,0,0,0,0,0,0,0,0,0,0,0,0,0,0,0,0,0,0,0,0,0,0,0,0,0,0,0,0,0,0,0,0,0,0,0,0,0,0,0,0,0,0,0,0,0,0,0,0,0,0,0,0,0]
[null,null,null,null,2,null,null,null,0,0,0,0,0,0,0,0,0,0,0,0,0,0,0,0,0,0,0,0,0,0,0,0,0,0,0,0,0,0,0,0,0,0,0,0,0,0,0,0,0,0,0,0,0,0,0,0,0,0,0,0,0]
[null,null,null,null,3,null,null,null,null,0,0,0,0,0,0,0,0,0,0,0,0,0,0,0,0,0,0,0,0,0,0,0,0,0,0,0,0,0,0,0,0,0,0,0,0,0,0,0,0,0,0,0,0,0,0,0,0,0,0,0,0]
[null,null,null,null,4,null,null,null,null,null,0,0,0,0,0,0,0,0,0,0,0,0,0,0,0,0,0,0,0,0,0,0,0,0,0,0,0,0,0,0,0,0,0,0,0,0,0,0,0,0,0,0,0,0,0,0,0,0,0,0,0]
[null,null,null,null,5,null,null,null,null,null,null,0,0,0,0,0,0,0,0,0,0,0,0,0,0,0,0,0,0,0,0,0,0,0,0,0,0,0,0,0,0,0,0,0,0,0,0,0,0,0,0,0,0,0,0,0,0,0,0,0,0]
[null,null,null,null,6,null,null,null,null,null,null,null,0,0,0,0,0,0,0,0,0,0,0,0,0,0,0,0,0,0,0,0,0,0,0,0,0,0,0,0,0,0,0,0,0,0,0,0,0,0,0,0,0,0,0,0,0,0,0,0,0]
[null,null,null,null,7,null,null,null,null,null,null,null,null,0,0,0,0,0,0,0,0,0,0,0,0,0,0,0,0,0,0,0,0,0,0,0,0,0,0,0,0,0,0,0,0,0,0,0,0,0,0,0,0,0,0,0,0,0,0,0,0]
[null,null,null,null,8,null,null,null,null,null,null,null,null,null,0,0,0,0,0,0,0,0,0,0,0,0,0,0,0,0,0,0,0,0,0,0,0,0,0,0,0,0,0,0,0,0,0,0,0,0,0,0,0,0,0,0,0,0,0,0,0]
[null,null,null,null,9,null,null,null,null,null,null,null,null,null,null,0,0,0,0,0,0,0,0,0,0,0,0,0,0,0,0,0,0,0,0,0,0,0,0,0,0,0,0,0,0,0,0,0,0,0,0,0,0,0,0,0,0,0,0,0,0]
[null,null,null,null,10,null,null,null,null,null,null,null,null,null,null,null,0,0,0,0,0,0,0,0,0,0,0,0,0,0,0,0,0,0,0,0,0,0,0,0,0,0,0,0,0,0,0,0,0,0,0,0,0,0,0,0,0,0,0,0,0]
[null,null,{"$f":"Asset49","v":0},null,null,null,0,0,0,0,0,0,0,0,0,0,0,0,0,0,0,0,0,0,0,0,0,0,0,0,0,0,0,0,0,0,0,0,0,0,0,0,0,0,0,0,0,0,0,0,0,0,0,0,0,0,0,0,0,0,0]
[null,{"$f":"C765","v":"Equity raising costs"},null,"Initial Asset Base",null,null,0.24341105430140475,0.24341105430140475,0.24341105430140475,0.24341105430140475,0.24341105430140475,0.24341105430140475,0.24341105430140475,0.24341105430140475,0.24341105430140475,0.24341105430140475,0.24341105430140475,0.24341105430140475,0.24341105430140475,0.24341105430140475,0.24341105430140475,0.24341105430140475,0,0,0,0,0,0,0,0,0,0,0,0,0,0,0,0,0,0,0,0,0,0,0,0,0,0,0,0,0,0,0,0,0,0,0,0,0,0,0]
[null,null,null,"Capex in year",0]
[null,null,null,null,1,null,null,0,0,0,0,0,0,0,0,0,0,0,0,0,0,0,0,0,0,0,0,0,0,0,0,0,0,0,0,0,0,0,0,0,0,0,0,0,0,0,0,0,0,0,0,0,0,0,0,0,0,0,0,0,0]
[null,null,null,null,2,null,null,null,0,0,0,0,0,0,0,0,0,0,0,0,0,0,0,0,0,0,0,0,0,0,0,0,0,0,0,0,0,0,0,0,0,0,0,0,0,0,0,0,0,0,0,0,0,0,0,0,0,0,0,0,0]
[null,null,null,null,3,null,null,null,null,0,0,0,0,0,0,0,0,0,0,0,0,0,0,0,0,0,0,0,0,0,0,0,0,0,0,0,0,0,0,0,0,0,0,0,0,0,0,0,0,0,0,0,0,0,0,0,0,0,0,0,0]
[null,null,null,null,4,null,null,null,null,null,0,0,0,0,0,0,0,0,0,0,0,0,0,0,0,0,0,0,0,0,0,0,0,0,0,0,0,0,0,0,0,0,0,0,0,0,0,0,0,0,0,0,0,0,0,0,0,0,0,0,0]
[null,null,null,null,5,null,null,null,null,null,null,0,0,0,0,0,0,0,0,0,0,0,0,0,0,0,0,0,0,0,0,0,0,0,0,0,0,0,0,0,0,0,0,0,0,0,0,0,0,0,0,0,0,0,0,0,0,0,0,0,0]
[null,null,null,null,6,null,null,null,null,null,null,null,0,0,0,0,0,0,0,0,0,0,0,0,0,0,0,0,0,0,0,0,0,0,0,0,0,0,0,0,0,0,0,0,0,0,0,0,0,0,0,0,0,0,0,0,0,0,0,0,0]
[null,null,null,null,7,null,null,null,null,null,null,null,null,0,0,0,0,0,0,0,0,0,0,0,0,0,0,0,0,0,0,0,0,0,0,0,0,0,0,0,0,0,0,0,0,0,0,0,0,0,0,0,0,0,0,0,0,0,0,0,0]
[null,null,null,null,8,null,null,null,null,null,null,null,null,null,0,0,0,0,0,0,0,0,0,0,0,0,0,0,0,0,0,0,0,0,0,0,0,0,0,0,0,0,0,0,0,0,0,0,0,0,0,0,0,0,0,0,0,0,0,0,0]
[null,null,null,null,9,null,null,null,null,null,null,null,null,null,null,0,0,0,0,0,0,0,0,0,0,0,0,0,0,0,0,0,0,0,0,0,0,0,0,0,0,0,0,0,0,0,0,0,0,0,0,0,0,0,0,0,0,0,0,0,0]
[null,null,null,null,10,null,null,null,null,null,null,null,null,null,null,null,0,0,0,0,0,0,0,0,0,0,0,0,0,0,0,0,0,0,0,0,0,0,0,0,0,0,0,0,0,0,0,0,0,0,0,0,0,0,0,0,0,0,0,0,0]
[null,null,{"$f":"Asset50","v":"Equity raising costs"},null,null,null,0.24341105430140475,0.24341105430140475,0.24341105430140475,0.24341105430140475,0.24341105430140475,0.24341105430140475,0.24341105430140475,0.24341105430140475,0.24341105430140475,0.24341105430140475,0.24341105430140475,0.24341105430140475,0.24341105430140475,0.24341105430140475,0.24341105430140475,0.24341105430140475,0,0,0,0,0,0,0,0,0,0,0,0,0,0,0,0,0,0,0,0,0,0,0,0,0,0,0,0,0,0,0,0,0,0,0,0,0,0,0]
[null,"Real Residual RAB (end period)",null,null,null,{"$f":"F9","v":16250.670513201945},16724.530494265822,17177.646443827238,17617.076297526459,18063.223864785803,18549.135809128325,17810.361764267273,17089.816447113921,16384.962476237582,15694.433105752976,15020.057654397175,14364.069598574752,13715.50655413124,13076.017695476945,12442.383631327682,11812.961200244501,11190.320678018221,11082.168595253021,10974.01651248782,10865.86442972262,10757.71234695742,10649.56026419222,10541.408181427019,10433.256098661819,10325.104015896619,10216.951933131419,10108.799850366218,10000.739497200528,9892.7742869814501,9784.9074135589344,9677.1409241427045,9569.4787223481744,9461.8165205536443,9354.1543187591142,9246.4921169645841,9138.8299151700539,9031.1677133755238,8925.0286369181449,8820.4465509568563,8717.4769889923646,8616.1723798166913,8516.6053737428319,8417.8129249391714,8319.6531375091818,8222.2523417022057,8125.7075960081747,8029.9658252354557,7939.9785087087703,7855.9071848296398,7777.9579789564286,7706.3018203886049,7641.2016513170647,7585.6592281093272,7539.8902535740044,7504.2428549107917,7479.0434445378214]
[null,"Real Residual RAB (start period)",null,null,null,0,16250.670513201945,16724.530494265822,17177.646443827238,17617.076297526459,18063.223864785803,18549.135809128325,17810.361764267273,17089.816447113921,16384.962476237582,15694.433105752976,15020.057654397175,14364.069598574752,13715.50655413124,13076.017695476945,12442.383631327682,11812.961200244501,11190.320678018221,11082.168595253021,10974.01651248782,10865.86442972262,10757.71234695742,10649.56026419222,10541.408181427019,10433.256098661819,10325.104015896619,10216.951933131419,10108.799850366218,10000.739497200528,9892.7742869814501,9784.9074135589344,9677.1409241427045,9569.4787223481744,9461.8165205536443,9354.1543187591142,9246.4921169645841,9138.8299151700539,9031.1677133755238,8925.0286369181449,8820.4465509568563,8717.4769889923646,8616.1723798166913,8516.6053737428319,8417.8129249391714,8319.6531375091818,8222.2523417022057,8125.7075960081747,8029.9658252354557,7939.9785087087703,7855.9071848296398,7777.9579789564286,7706.3018203886049,7641.2016513170647,7585.6592281093272,7539.8902535740044,7504.2428549107917]
[]
[null,"Asset Values ($m Nominal)"]
[]
[null,"Inflation on Opening RAB",null,null,null,null,{"$f":"F774*G6","v":454.98320617697647},481.36023058778551,508.24383753059152,535.83920645310695,564.79144031726958,596.22298259914555,588.50473677131367,580.50612983739791,572.14624621736857,563.37740506682644,554.2651612036384,544.89857550773274,534.86257867182746,524.20124904320346,512.76494773681247,500.455779808015,487.35076707127251,496.15350610839732,505.06713672820035,514.0909681053804,523.22418380603381,532.46583529564543,541.81483518201583,551.26995018337436,560.82979381158384,570.49281875999634,580.25730898515758,590.1267842802647,600.0998277879745,610.17486316728832,620.35008679563839,630.6236485980171,640.98620645369897,651.43469053880574,661.96578937076151,672.57593868282993,683.26130986510339,694.13625769075622,705.20904578840373,716.49027730217813,727.99108486382829,739.72516940440505,751.61481467061617,763.6484451917654,775.83834966582128,788.19526567685364,800.71602215846929,813.9099142891946,827.83835779769913,842.57192537206708,858.18238520820648,874.75701236634245,892.7118314466544,912.16872200133378,933.27411845653]
[null,"Nominal Straight-line Depreciation",null,null,null,null,{"$f":"G115*G7","v":674.66957148554877},718.09084811032596,760.38772149238491,812.22279418497499,847.24849681946557,871.89616830174805,874.19160187533555,879.09674239940489,885.34362666011089,888.84012686894903,888.8122299994601,903.35505398354314,915.65411707426915,932.67251105187449,952.41245469282308,968.52853758202298,172.94265318064092,177.78466894638774,182.76225055575125,187.87919355563682,193.13939975995578,198.54688022486906,204.10575830733089,209.82027280926542,215.69478120977311,221.73376298783191,227.74849331562231,233.91881471714572,240.24900662514682,246.74561053209192,253.40848196081356,260.50336481511209,267.79688886060802,275.29461561588465,283.00226230987295,290.92570624140052,294.83995372783164,298.64862519255462,302.27642360676026,305.71504036426421,308.88387595116012,315.06178597198078,321.80869870434543,328.26068031185758,334.48542074807574,340.99043394592462,329.46875216638387,316.42661568495993,301.59838039967775,285.01191895284319,266.18513966313441,233.4633447385163,197.76856030416684,158.34563757195718,115.06965977743795]
[null,"Nominal Regulatory Depreciation",null,null,null,null,{"$f":"G772-G771","v":219.68636530857231},{"$f":"H772-H771","v":236.73061752254046},{"$f":"I772-I771","v":252.14388396179339},276.38358773186803,282.457056502196,275.6731857026025,285.68686510402188,298.59061256200698,313.19738044274231,325.46272180212259,334.5470687958217,358.4564784758104,380.79153840244169,408.47126200867103,439.6475069560106,468.07275777400798,-314.40811389063163,-318.36883716200958,-322.30488617244907,-326.21177454974361,-330.08478404607803,-333.91895507077641,-337.70907687468491,-341.44967737410894,-345.13501260181073,-348.7590557721644,-352.50881566953524,-356.20796956311898,-359.85082116282769,-363.42925263519641,-366.94160483482483,-370.12028378290501,-373.18931759309095,-376.14007492292109,-378.96352706088857,-381.65023244142941,-388.42135613727174,-395.48763249820161,-402.93262218164347,-410.77523693791392,-419.10720891266817,-424.66338343242427,-429.80611596627074,-435.38776487990782,-441.35292891774554,-447.20483173092902,-471.24726999208542,-497.48329860423468,-526.23997739802144,-557.5600064192239,-591.99724554507202,-641.29366762782615,-694.94327114248756,-753.82308442937665,-818.20445867909211]
[null,"Nominal Residual RAB (end period)",null,null,null,{"$f":"F$7*F766","v":16250.670513201945},{"$f":"G$7*G766","v":17192.780742765037},{"$f":"H$7*H766","v":18152.98461996932},{"$f":"I$7*I766","v":19138.610555084866},20172.699740707827,21295.342577652147,21019.669391949541,20733.982526845521,20435.391914283511,20122.194533840771,19796.731812038648,19462.184743242826,19103.728264767014,18722.936726364573,18314.465464355901,17874.81795739989,17406.745199625882,17721.153313516515,18039.522150678524,18361.827036850973,18688.038811400715,19018.123595446792,19352.04255051757,19689.751627392252,20031.20130476636,20376.336317368168,20725.095373140335,21077.60418880987,21433.812158372988,21793.662979535817,22157.092232171013,22524.033837005838,22894.154120788746,23267.343438381838,23643.48351330476,24022.447040365652,24404.097272807081,24792.518628944355,25188.006261442559,25590.938883624196,26001.714120562108,26420.821329474777,26845.484712907204,27275.290828873472,27710.678593753382,28152.031522671128,28599.236354402059,29070.483624394143,29567.966922998377,30094.206900396395,30651.766906815621,31243.764152360691,31885.05781998852,32580.001091131009,33333.824175560381,34152.028634239476]
[null,"Inflated Nominal Residual RAB (start period)",null,null,null,{"$f":"F$7*F767","v":0},{"$f":"G$7*G767","v":16705.653719378923},17674.140973352823,{"$f":"I$7*I767","v":18661.228457499914},19674.44976153797,20737.4911810251,21891.565560251292,21608.174128720853,21314.488656682919,21007.538160500881,20685.571938907597,20350.996973242287,20007.08331875056,19638.590843438844,19247.137975407779,18827.230412092715,18375.273737207906,17894.095966697158,18217.306819624911,18544.589287406721,18875.918004956351,19211.262995206747,19550.589430742439,19893.857385699583,20241.021577575626,20592.031098577943,20946.829136128166,21305.352682125489,21667.730973090132,22033.911986160965,22403.837842703106,22777.442318966652,23154.657485603857,23535.140327242443,23918.778128920643,24305.449302675523,24695.022979048481,25087.358582672186,25486.654886635111,25893.215307230959,26307.429160926375,26729.705205425937,27160.546498879183,27597.099527577819,28038.939274065237,28486.516943419203,28940.22678834798,29399.952376560526,29884.393538683336,30395.805280796074,30936.778825768466,31509.949292023826,32118.521164727033,32777.769651435177,33492.169813132336,34267.098294016912]
[]
[null,"Tax Values ($m Nominal)"]
[]
[null,"Tax Depreciation",null,null,null,null,627.88867438708075,692.71261385089133,753.06225060426732,788.68847547336395,848.55207425846766,584.02686019910095,544.50089145166191,512.24276254352696,483.49281872699055,464.7681658413311,449.12339728799486,443.09044249339308,428.04059202743116,413.71563799185475,402.81070769721634,396.81910685572552,370.78587736365557,343.28160022130413,337.13152986911183,331.28871959655322,310.90380587237229,272.45769946067588,267.41633161561299,262.67531869732693,243.31255153741671,233.78392621859962,216.96178318812275,184.22043316593582,108.97891736982743,89.166866694214875,77.470907295375213,72.596283510640873,72.241003889649718,61.715448661235875,58.577622079047629,55.050258222087344,57.126399817108364,54.026283484319912,51.871695415860387,49.828086789340666,60.337885372514556,57.984255212482424,55.526179919685561,38.180871681501799,37.106437854606234,57.630805132281751,71.777845124708975,73.951103755419894,42.744065701771355,42.063652052286599,43.542524295708283,53.065217821397425,54.7990993798959,49.709389948660295,50.206418230276974]
[null,{"$f":"C792","v":"Overhead Sub-Transmission Lines"},null,"Initial Asset Base",null,null,24.862218987011271,24.614065388548678,24.376940838906641,24.150355158137579,23.933839952069366,23.726947644048629,23.529250549717705,23.340339992912597,23.159825460854385,22.987333796887651,22.822508429097212,22.665008633208572,22.514508828248314,22.370697903508514,22.233278575423821,22.101966773031773,16.265966098530523,2.577829005625754,2.4632588275979428,2.3537806574824787,2.2491681838165909,2.1492051534247425,2.053684924383643,1.9624100388554806,1.8751918149063482,1.7918499564660662,1.7122121806231299,1.636113861484324,1.5633976898627986,1.4939133480911184,1.4275171992870688,1.3640719904298659,1.3034465686329828,1.2455156100270721,1.1901593606925358,1.1372633891062007,1.0867183495903694,1.0384197562752417,0.99226776710745335,0.94816697745823308,0.90602622290453405,0.86575839077544348,0.82728024007431267,0.79051222940434351,0.75537835254192831,0.72180598131784224,0.68972571548149375,0.65907123923787159,0.62977918416063305,0.60178899819793807,2.9506977990042929,3.8353778560068026,5.7297536814033645,0.20804184346427745,0.21459228137692898]
[null,null,null,"Capex in year",0]
[null,null,null,null,1,null,null,2.7205594296018027,2.5996456771750562,2.4841058693006088,2.3737011639983598,2.2682033344873216,2.1673942973989964,2.0710656619590408,1.9790182992053058,1.8910619303517366,1.8070147334472151,1.7267029675162278,1.6499606134043951,1.5766290305864223,1.5065566292270256,1.4395985568169356,1.3756163987361831,1.3144778921256859,1.2560566524756553,1.2002319123656262,1.1468882718160429,1.0959154597353298,1.0472081059693152,1.0006655234817898,0.95619150021593247,0.91369410020633557,0.87308547353049848,0.83428167470692061,0.79720248916439074,0.76177126742375112,0.72791476664936217,0.6955629992427238,0.66464908816526935,0.63510912869125735,0.60688205630497938,0.57990952046920241,0.55413576400390452,0.52950750782595335,0.50597384081146646,0.48348611455317919,0.46199784279526007,0.44146460533769283,0.42184395621157317,0.40309533593550317,0.38517998767170297,0.36806087710851609,0.35170261590369301,0.33607138853019569,0.32113488237329818,0.30686222093448484,0.29322390000406334,0.28019172667054937,0.26773876104074706,0.25583926055004719,0.24446862674782288]
[null,null,null,null,2,null,null,null,2.8908246099436776,2.7623435161684031,2.6395726932275854,2.522258351306359,2.4101579801371877,2.3030398476866463,2.2006825211227952,2.1028744090728932,2.0094133242252088,1.9201060653707553,1.8347680180209438,1.7532227727755687,1.67530176065221,1.6008439046232228,1.5296952866399685,1.4617088294559701,1.3967439925912601,1.3346664818094263,1.275347971506785,1.2186658394398171,1.164502913242492,1.1127472282094921,1.0632917958446257,1.0160343826959757,0.97087729902059894,0.92772719684190563,0.88649487698226537,0.84709510467194227,0.80944643335318922,0.77347103631526981,0.73909454581236889,0.70624589933181903,0.67485719269484934,0.64486353968618926,0.61620293792235847,0.58881614068136479,0.56264653442885959,0.53764002178757697,0.51374490970812925,0.49091180260999018,0.46909350027176827,0.44824490025968966,0.42832290469259243,0.40928633115069946,0.39109582754400185,0.37371379076426853,0.35710428895252316,0.34123298722130008,0.32606707667813101,0.31157520660354754,0.29772741964338972,0.28449508988146144,0.27185086366450767]
[null,null,null,null,3,null,null,null,null,3.0882379420880723,2.9509829224397137,2.8198281258868372,2.6945024314029782,2.5747467677850677,2.460313578105731,2.350966307967699,2.2464789165024679,2.1466354091023585,2.0512293909200312,1.9600636402124743,1.8729497006474753,1.7897074917298099,1.7101649365418183,1.6341576060288485,1.5615283790942329,1.4921271178011559,1.4258103570099936,1.3624410078095495,1.301888074129125,1.2440263819456083,1.1887363205258035,1.135903595169101,1.085418990939363,1.0371781468976138,0.99108134036883078,0.94703328079688276,0.90494291276146588,0.86472322774984534,0.82629108429429643,0.78956703610343881,0.75447516783217472,0.72094293815074473,0.68890102978848955,0.65828320624233438,0.62902617485378609,0.60106945597139572,0.5743552579282224,0.54882835757585691,0.52443598612804099,0.50112772007790585,0.47885537696333241,0.45757291576496212,0.43723634173096376,0.41780361543180972,0.39923456585706274,0.38149080737452651,0.36453566038010315,0.34833407547432066,0.33285256100879534,0.31805911385284902,0.30392315323716695]
[null,null,null,null,4,null,null,null,null,null,3.2780225751407892,3.1323326829123097,2.9931178970050958,2.8600904349159806,2.7329753044752705,2.611509735387481,2.495442636036926,2.3845340744352845,2.2785547822381611,2.1772856808053542,2.0805174283251162,1.988049987066222,1.8996922098632787,1.8152614449804665,1.7345831585368903,1.6574905737130283,1.5838243259924494,1.5134321337261183,1.4461684833382906,1.3818943285232557,1.3204768028111111,1.2617889449083948,1.2057094362457994,1.1521223501904307,1.1009169124041893,1.051987271852892,1.0052322819927635,0.96055529168197407,0.91786394538499727,0.8770699922567754,0.8380891037120296,0.80084069910260614,0.7652477791424902,0.73123676673615723,0.6987373548812168,0.6676823613309405,0.63800758971623206,0.60965169683995513,0.58255606586929054,0.5566646851639887,0.53192403249003373,0.5082829643793656,0.48569261040694928,0.46410627216664035,0.44347932673701201,0.42376913443758951,0.40493495068480767,0.38693784176548301,0.36974060435368361,0.35330768860463113,0.3376051246666476]
[null,null,null,null,5,null,null,null,null,null,null,3.5190715648557829,3.3626683841955263,3.2132164560090581,3.0704068357419887,2.9339443097090121,2.8035467848330557,2.678944705507142,2.5598804963734914,2.4461080298680029,2.3373921174294252,2.2335080233214502,2.1342410000627194,2.039385844504376,1.9487464736375151,1.8621355192536255,1.779373940620131,1.7002906543703473,1.6247221808427763,1.552512306138653,1.4835117591991573,1.4175779032347504,1.3545744408687614,1.2943711323857054,1.2368435265018962,1.1818727031018121,1.1293450274083985,1.0791519150791362,1.0311896077422857,0.98535895850929534,0.94156522701999334,0.89971788359688254,0.85973042210368766,0.82152018112130154,0.78500817307146598,0.75011892093495625,0.71678030222673583,0.68492339990554751,0.65448235990974557,0.6253942550248679,0.59759895480154024,0.571039001254805,0.54565949008792491,0.52140795719512811,0.49823427020867822,0.47609052486607001,0.45493094598313377,0.43471179282832767,0.41539126870262438,0.39692943453806351,0.37928812633637166]
[null,null,null,null,6,null,null,null,null,null,null,null,0,0,0,0,0,0,0,0,0,0,0,0,0,0,0,0,0,0,0,0,0,0,0,0,0,0,0,0,0,0,0,0,0,0,0,0,0,0,0,0,0,0,0,0,0,0,0,0,0]
[null,null,null,null,7,null,null,null,null,null,null,null,null,0,0,0,0,0,0,0,0,0,0,0,0,0,0,0,0,0,0,0,0,0,0,0,0,0,0,0,0,0,0,0,0,0,0,0,0,0,0,0,0,0,0,0,0,0,0,0,0]
[null,null,null,null,8,null,null,null,null,null,null,null,null,null,0,0,0,0,0,0,0,0,0,0,0,0,0,0,0,0,0,0,0,0,0,0,0,0,0,0,0,0,0,0,0,0,0,0,0,0,0,0,0,0,0,0,0,0,0,0,0]
[null,null,null,null,9,null,null,null,null,null,null,null,null,null,null,0,0,0,0,0,0,0,0,0,0,0,0,0,0,0,0,0,0,0,0,0,0,0,0,0,0,0,0,0,0,0,0,0,0,0,0,0,0,0,0,0,0,0,0,0,0]
[null,null,null,null,10,null,null,null,null,null,null,null,null,null,null,null,0,0,0,0,0,0,0,0,0,0,0,0,0,0,0,0,0,0,0,0,0,0,0,0,0,0,0,0,0,0,0,0,0,0,0,0,0,0,0,0,0,0,0,0,0]
[null,null,{"$f":"Asset1","v":"Overhead Sub-Transmission Lines"},null,null,null,46.884216818970202,49.979892256306691,53.528183650952414,57.047363738067048,61.118013649189166,37.988641703497244,37.15709153985749,36.362499161268389,35.603221999505479,34.877690489376469,34.184404824142085,33.521931855140338,32.888902129205334,32.284007057756334,31.70599621170507,31.153674736589416,24.915375930374491,10.842820622721103,10.360917483933497,9.9004322624253405,9.4604130507619928,9.0399502485059031,8.6381746819056424,8.25425580715428,7.8873999935029779,7.5368488826806228,7.2018778212281509,6.8817943625069002,6.5759368352843719,6.2836729759383978,6.004398621452248,5.7375364604988155,5.4825348400321996,5.238866624919658,5.0060281082565625,4.7835379701118255,4.5709362825512994,4.367783558882353,4.1736598451542477,3.9881638520362817,3.8109121252791143,3.6415382530444855,3.4796921084647314,3.3250391258662986,3.1772596091611303,3.0360480709761903,2.9011126011550266,2.7721742633259137,2.6489665182892073,2.5312346730319089,4.7943903327345323,5.5971284993490311,7.413204296152605,1.8166724308913298,1.7517281760294456]
[null,{"$f":"C805","v":"Underground Sub-Transmission Cables"},null,"Initial Asset Base",null,null,1.7521655444981767,1.7490779919136006,1.7461139414324078,1.7432684529704627,1.7405367840469952,1.7379143818804665,1.7353968758005991,1.732980069963926,1.7306599363607205,1.7284326081016426,1.7262943729729279,1.7242416672493617,1.7222710697547383,1.7203792961599003,1.7185631935088552,1.7168197349638519,1.715146014760649,1.7135392433655743,1.7119967428263023,1.7105159423086012,1.7090943738116084,1.7077296680544951,1.7064195505276663,1.7051618377019107,1.7039544333891852,1.7027953252489691,1.7016825814343615,0.93428267853466918,2.4612112789018269E-2,2.3627628277457544E-2,2.268252314635924E-2,2.1775222220504868E-2,2.0904213331684678E-2,2.0068044798417287E-2,1.9265323006480595E-2,1.8494710086221368E-2,1.7754921682772519E-2,1.7044724815461616E-2,1.636293582284315E-2,1.5708418389929424E-2,6.1854602065888872E-2,0.12423121145050929,8.541948883085819E-2,5.1798720013772684E-2,5.3698018997277275E-2,0,0,0,0,0,0,0,0,0,0]
[null,null,null,"Capex in year",0]
[null,null,null,null,1,null,null,0.15311662038315896,0.14699195556783259,0.14111227734511927,0.13546778625131453,0.13004907480126193,0.12484711180921146,0.11985322733684299,0.11505909824336928,0.11045673431363451,0.10603846494108914,0.10179692634344557,9.7725049289707752E-2,9.3816047318119433E-2,9.0063405425394663E-2,8.6460869208378879E-2,8.3002434440043724E-2,7.9682337062441974E-2,7.6495043579944286E-2,7.3435241836746518E-2,7.0497832163276666E-2,6.767791887674561E-2,6.4970802121675789E-2,6.2371970036808742E-2,5.987709123533639E-2,5.7482007585922937E-2,5.5182727282486022E-2,5.2975418191186584E-2,5.0856401463539119E-2,4.8822145404997547E-2,4.6869259588797639E-2,4.4994489205245729E-2,4.3194709637035908E-2,4.1466921251554469E-2,3.980824440149229E-2,3.8215914625432605E-2,3.6687278040415307E-2,3.52197869187987E-2,3.381099544204675E-2,3.2458555624364872E-2,3.116021339939028E-2,2.9913804863414661E-2,2.8717252668878077E-2,2.756856256212295E-2,2.6465820059638025E-2,2.5407187257252505E-2,0.60977249417406032,0,0,0,0,0,0,0,0]
[null,null,null,null,2,null,null,null,0.16397103231168703,0.15741219101921955,0.15111570337845076,0.14507107524331275,0.13926823223358023,0.13369750294423705,0.12834960282646754,0.12321561871340883,0.11828699396487249,0.11355551420627759,0.10901329363802649,0.10465276189250541,0.10046665141680521,9.6447985360132993E-2,9.2590065945727676E-2,8.8886463307898581E-2,8.5331004775582628E-2,8.1917764584559322E-2,7.8641054001176935E-2,7.5495411841129859E-2,7.2475595367484671E-2,6.9576571552785293E-2,6.6793508690673881E-2,6.4121768343046934E-2,6.1556897609325055E-2,5.9094621704952055E-2,5.6730836836753971E-2,5.446160336328381E-2,5.2283139228752468E-2,5.0191813659602361E-2,4.8184141113218275E-2,4.6256775468689532E-2,4.4406504449941958E-2,4.2630244271944291E-2,4.0925034501066514E-2,3.9288033121023851E-2,3.7716511796182906E-2,3.6207851324335592E-2,3.4759537271362169E-2,3.3369155780507677E-2,3.2034389549287376E-2,3.0753013967315876E-2,2.9522893408623237E-2,2.834197767227831E-2,2.7208298565387173E-2,0.65299916556929238,0,0,0,0,0,0,0]
[null,null,null,null,3,null,null,null,null,0.17462395688655605,0.1676389986110938,0.16093343866665005,0.15449610111998405,0.1483162570751847,0.14238360679217732,0.13668826252049021,0.13122073201967061,0.12597190273888378,0.12093302662932842,0.1160957055641553,0.11145187734158908,0.10699380224792553,0.10271405015800848,9.8605488151688153E-2,9.4661268625620631E-2,9.0874817880595801E-2,8.7239825165371987E-2,8.3750232158757112E-2,8.0400222872406821E-2,7.7184213957510545E-2,7.4096845399210118E-2,7.1132971583241708E-2,6.8287652719912037E-2,6.5556146611115557E-2,6.293390074667092E-2,6.0416544716804098E-2,5.7999882928131935E-2,5.5679887611006652E-2,5.3452692106566391E-2,5.1314584422303737E-2,4.9262001045411598E-2,4.7291521003595134E-2,4.5399860163451322E-2,4.3583865756913268E-2,4.184051112663674E-2,4.0166890681571275E-2,3.8560215054308421E-2,3.7017806452136086E-2,3.5537094194050635E-2,3.4115610426288613E-2,3.2750986009237072E-2,3.1440946568867589E-2,3.0183308706112886E-2,2.8975976357868378E-2,0.6954234325888411,0,0,0,0,0,0]
[null,null,null,null,4,null,null,null,null,null,0.18353972834877691,0.17619813921482586,0.16915021364623278,0.16238420510038348,0.15588883689636818,0.14965328342051343,0.14366715208369291,0.13792046600034519,0.13240364736033136,0.12710750146591809,0.12202320140728139,0.11714227335099014,0.11245658241695054,0.1079583191202725,0.10363998635546161,9.949438690124314E-2,9.5514611425193421E-2,9.1694026968185696E-2,8.8026265889458263E-2,8.4505215253879926E-2,8.1125006643724726E-2,7.7880006377975736E-2,7.47648061228567E-2,7.1774213877942444E-2,6.8903245322824741E-2,6.6147115509911744E-2,6.3501230889515273E-2,6.0961181653934667E-2,5.8522734387777275E-2,5.6181825012266186E-2,5.3934552011775543E-2,5.1777169931304531E-2,4.9706083134052344E-2,4.7717839808690245E-2,4.5809126216342637E-2,4.3976761167688942E-2,4.2217690720981374E-2,4.0528983092142125E-2,3.8907823768456445E-2,3.7351510817718182E-2,3.5857450385009461E-2,3.4423152369609085E-2,3.3046226274824717E-2,3.1724377223831722E-2,3.0455402134878452E-2,0.73092965123708264,0,0,0,0,0]
[null,null,null,null,5,null,null,null,null,null,null,0.19602257345442667,0.18818167051624962,0.18065440369559962,0.17342822754777562,0.1664910984458646,0.15983145450803002,0.1534381963277088,0.14730066847460049,0.14140864173561646,0.1357522960661918,0.13032220422354412,0.12510931605460235,0.12010494341241826,0.11530074567592152,0.11068871584888466,0.10626116721492927,0.1020107205263321,9.793029170527881E-2,9.4013080037067653E-2,9.0252556835584946E-2,8.6642454562161561E-2,8.3176756379675101E-2,7.984968612448809E-2,7.6655698679508555E-2,7.3589470732328216E-2,7.064589190303508E-2,6.7820056226913672E-2,6.5107253977837121E-2,6.2502963818723639E-2,6.0002845265974686E-2,5.760273145533569E-2,5.5298622197122269E-2,5.3086677309237378E-2,5.0963210216867873E-2,4.8924681808193163E-2,4.696769453586544E-2,4.5088986754430835E-2,4.3285427284253601E-2,4.1554010192883448E-2,3.9891849785168104E-2,3.8296175793761392E-2,3.6764328762010939E-2,3.5293755611530496E-2,3.3882005387069258E-2,3.2526725171586474E-2,0.78064140411807514,0,0,0,0]
[null,null,null,null,6,null,null,null,null,null,null,null,0,0,0,0,0,0,0,0,0,0,0,0,0,0,0,0,0,0,0,0,0,0,0,0,0,0,0,0,0,0,0,0,0,0,0,0,0,0,0,0,0,0,0,0,0,0,0,0,0]
[null,null,null,null,7,null,null,null,null,null,null,null,null,0,0,0,0,0,0,0,0,0,0,0,0,0,0,0,0,0,0,0,0,0,0,0,0,0,0,0,0,0,0,0,0,0,0,0,0,0,0,0,0,0,0,0,0,0,0,0,0]
[null,null,null,null,8,null,null,null,null,null,null,null,null,null,0,0,0,0,0,0,0,0,0,0,0,0,0,0,0,0,0,0,0,0,0,0,0,0,0,0,0,0,0,0,0,0,0,0,0,0,0,0,0,0,0,0,0,0,0,0,0]
[null,null,null,null,9,null,null,null,null,null,null,null,null,null,null,0,0,0,0,0,0,0,0,0,0,0,0,0,0,0,0,0,0,0,0,0,0,0,0,0,0,0,0,0,0,0,0,0,0,0,0,0,0,0,0,0,0,0,0,0,0]
[null,null,null,null,10,null,null,null,null,null,null,null,null,null,null,null,0,0,0,0,0,0,0,0,0,0,0,0,0,0,0,0,0,0,0,0,0,0,0,0,0,0,0,0,0,0,0,0,0,0,0,0,0,0,0,0,0,0,0,0,0]
[null,null,{"$f":"Asset2","v":"Underground Sub-Transmission Cables"},null,null,null,3.1559419786277942,3.345323670504003,3.5647148581085233,3.7813095755418749,4.0311293888858009,2.5461886832609437,2.5113402051258573,2.4778856661161739,2.4457693086668781,2.4149376055155543,2.3853391704902829,2.3569246728660227,2.3296467551467326,2.3034599541362151,2.278320625166117,2.2541868693548235,2.2310184637759813,2.2087767944202938,2.1874247918388328,2.1669268693606307,2.1472488637815568,2.1283579784256457,2.1102227284839707,2.0928128885399628,2.0760994421937151,2.0600545337013179,2.0446514215486165,1.2635327650443542,0.34069219583831561,0.32706450800478293,0.31398192768459166,0.30142265057720796,0.28936574455411967,0.27779111477195484,0.26667947018107668,0.25601229137383358,0.24577179971888025,0.23594092773012507,0.22650329062092003,0.2174431589960833,0.25551995304779651,0.3101499483931407,0.26390147629578431,0.22314142798010173,0.21818701864495316,0.1579094396617689,0.73697465648239602,0.74899327476252298,0.7597608401107887,0.76345637640866915,0.78064140411807514,0,0,0,0]
[null,{"$f":"C818","v":"Overhead Distribution Lines"},null,"Initial Asset Base",null,null,112.07746887800464,110.74976143674161,109.48106321509029,108.2687515810679,107.11032046411317,106.00337517457866,104.94562745346789,103.93489074218429,102.96907566251326,102.04618569749431,101.16431306425397,100.32163477026873,99.516408844905087,98.746970738446493,98.011729881163831,97.309166395315955,96.637827953283534,95.99632677534143,95.383336760863443,94.797590747028934,94.23787788936481,93.703041158708004,93.191974949413733,92.703622793865847,92.236975178564563,91.791067457276625,91.364977856934871,90.957825572163827,20.603513924608016,7.9929522729112774,7.6377099496707759,7.2982561741298531,6.9738892330574132,6.6639386004770849,6.3677635515669939,6.0847518381640153,5.8143184231345035,5.5559042709951925,5.3089751922842945,5.0730207392938818,4.8475531508808203,4.632106344175007,4.4262349511005636,4.2295133977183186,4.0415350244863939,27.148110167948968,27.670968051618054,30.989819924629035,0.5336511298017782,0.55045375245967509,0,0,0,0,0]
[null,null,null,"Capex in year",0]
[null,null,null,null,1,null,null,15.529513643004272,14.839313036648525,14.179788012797481,13.549575212228703,12.947371869462984,12.371933119709073,11.82206942549978,11.296644117699792,10.794571045802023,10.314812332655265,9.8563762289816985,9.4183150632491781,8.9997232826603266,8.5997355812087566,8.2175251109328116,7.8523017726691302,7.5033105827727242,7.1698301124272703,6.8511709963193921,6.5466745075940862,6.2557111961454606,5.9776795874278843,5.7120049390977572,5.4581380529156345,5.215554139452717,4.9837517332548185,4.7622516562212711,4.5505960270558807,4.348347314742286,4.1550874340870729,3.9704168814609804,3.7939539089516026,3.62533373522042,3.4642077914328464,3.3102430007024979,3.1631210895601649,3.0225379300241584,2.8882029109119736,2.7598383370936643,2.6371788554450584,2.5199709063141653,2.4079721993668701,2.3009512127283416,2.1986867143848587,2.1009673048566433,2.007590980196349,1.9183647144098435,1.8331040604360724,1.7516327688611355,1.6737824235784173,35.986322106935972,0,0,0]
[null,null,null,null,2,null,null,null,16.423386299711787,15.693458019724595,14.995970996625726,14.329483396775695,13.692617468030107,13.084056691673212,12.502543060932181,11.946874480446306,11.415902281315359,10.908528846590233,10.423705342297334,9.9604295493063404,9.5177437915593934,9.0947329563789765,8.6905226027621332,8.3042771537504816,7.9351981691393494,7.5825226949553786,7.2455216862906955,6.9234985002333316,6.6157874557785163,6.3217524577439166,6.040785681844187,5.7723063182066667,5.515759370730815,5.2706145098094455,5.0363649760401357,4.8125265326605735,4.5986364645423263,4.3942526216737789,4.1989525051549439,4.0123323938147246,3.8340065096451807,3.6636062203276172,3.5007792772019459,3.3451890871040812,3.1965140165661223,3.0544467269409603,2.9186935390769175,2.7889738262290544,2.6650194339522084,2.546574125776556,2.4333930535198207,2.3252422511411623,2.2218981510904441,2.1231471221530911,2.0287850278351751,1.9386168043758341,1.8524560575146856,1.7701246771806989,38.057680559385005,0,0]
[null,null,null,null,3,null,null,null,null,17.578352454357574,16.797092345275015,16.050554907707234,15.337196911809135,14.655543715728729,14.004186217251899,13.381777940929592,12.787032254666055,12.218719710014229,11.675665500680264,11.156747033983363,10.66089161025077,10.187074205350736,9.7343153517795926,9.3016791139227202,8.8882711533039327,8.4932368798237583,8.1157596851649245,7.7550592547131494,7.4103899545036755,7.0810392898590679,6.7663264325319981,6.4656008133083533,6.1782407771613155,5.9036522981763691,5.6412677515907514,5.3905447404089397,5.1509649741685433,4.9220331975388314,4.7032761665371057,4.4942416702465682,4.2944975960133869,4.1036310361905688,3.9212474345820993,3.7469697708228953,3.5804377810085448,3.4213072129637214,3.2692491146097789,3.1239491539604538,2.9851069693399901,2.8524355484804347,2.7256606352146364,2.6045201625384307,2.4887637108700549,2.3781519903869417,2.2724563463697449,2.1714582865310907,2.0749490293519304,1.9827290724918436,1.8946077803810948,40.73406727819355,0]
[null,null,null,null,4,null,null,null,null,null,18.770025842263067,17.935802471495819,17.138655694984894,16.376937664096676,15.649073767914603,14.953559378229508,14.288956739197086,13.653891995232772,13.047052351000204,12.467183357622417,11.913086319505863,11.383615816416714,10.877677335687084,10.394225009656548,9.9322594536718114,9.4908257001752876,9.0690112246119412,8.6659440590736327,8.2807909897814707,7.9127558346800715,7.5610777975831791,7.2250298954683716,6.9039174556697773,6.5970766798622309,6.303873271868353,6.0237011264519831,5.7559810763874495,5.5001596952146734,5.2557081532051324,5.0221211241737924,4.7989157408771792,4.5856305968381932,4.3818247925342728,4.1870770239771948,4.0009847118004327,3.8231631690537471,3.6532448059846909,3.4908783701631494,3.3357282203781198,3.1874736328057578,3.045808138014392,2.9104388874359759,2.7810860479943762,2.6574822236390698,2.539371902588444,2.4265109291400679,2.3186659989560643,2.2156141767802384,2.1171424355900048,2.0230472162304496,43.495515148954667]
[null,null,null,null,5,null,null,null,null,null,null,20.21248493117886,19.314152267570911,18.455745500123314,17.635490144562279,16.851690582581732,16.102726556689213,15.387049820836356,14.703180939910297,14.049706231469839,13.425274843404514,12.828595961475425,12.258436140965408,11.713616756922498,11.193011567725943,10.695544386938124,10.220186858629763,9.7659563315795506,9.3319138279537928,8.9171621022669569,8.5208437866106479,8.1421396183168397,7.7802667463916482,7.4344771132186862,7.1040559081867443,6.7883200900451106,6.4866169749319953,6.1983228871572393,5.9228418699502505,5.6596044535080159,5.4080664777965497,5.1677079676722597,4.9380320579979378,4.718563966531363,4.5088500124633031,4.3084566785760448,4.1169697150837772,3.9339932833022759,3.7591491373777295,3.5920758423831636,3.4324280271661336,3.2798756704031957,3.134103418385275,2.9948099331237068,2.8617072694293206,2.7345202796769073,2.6129860450245994,2.4968533319123938,2.3858820727162868,2.279842869484451,2.1785165197295857]
[null,null,null,null,6,null,null,null,null,null,null,null,0,0,0,0,0,0,0,0,0,0,0,0,0,0,0,0,0,0,0,0,0,0,0,0,0,0,0,0,0,0,0,0,0,0,0,0,0,0,0,0,0,0,0,0,0,0,0,0,0]
[null,null,null,null,7,null,null,null,null,null,null,null,null,0,0,0,0,0,0,0,0,0,0,0,0,0,0,0,0,0,0,0,0,0,0,0,0,0,0,0,0,0,0,0,0,0,0,0,0,0,0,0,0,0,0,0,0,0,0,0,0]
[null,null,null,null,8,null,null,null,null,null,null,null,null,null,0,0,0,0,0,0,0,0,0,0,0,0,0,0,0,0,0,0,0,0,0,0,0,0,0,0,0,0,0,0,0,0,0,0,0,0,0,0,0,0,0,0,0,0,0,0,0]
[null,null,null,null,9,null,null,null,null,null,null,null,null,null,null,0,0,0,0,0,0,0,0,0,0,0,0,0,0,0,0,0,0,0,0,0,0,0,0,0,0,0,0,0,0,0,0,0,0,0,0,0,0,0,0,0,0,0,0,0,0]
[null,null,null,null,10,null,null,null,null,null,null,null,null,null,null,null,0,0,0,0,0,0,0,0,0,0,0,0,0,0,0,0,0,0,0,0,0,0,0,0,0,0,0,0,0,0,0,0,0,0,0,0,0,0,0,0,0,0,0,0,0]
[null,null,{"$f":"Asset3","v":"Overhead Distribution Lines"},null,null,null,236.31251401296686,254.05127250239397,274.25699574983764,294.33139456798608,317.61688393933696,187.47907275119925,182.80018291557201,178.32924373930604,174.05701297087404,169.97465912548347,166.07374322877695,162.34620137192402,158.78432804204238,155.38076019348875,152.12846202709312,149.02071044587063,146.05108115714688,143.21343539236639,140.50190721713173,137.91089140524087,135.43503185165622,133.06921050045312,130.80853676485907,128.6483374175136,126.5841469300502,124.61169824202958,122.72691394014325,120.92589782945183,49.239671859349883,35.356392077220171,33.784996873788167,32.283441457175357,30.848621836856449,29.477571977440604,28.167457667332133,26.915570659895153,25.719323075010927,24.576242049454887,23.48396462503467,22.44023286392202,21.442889181081043,20.489871884144105,19.579210911515482,18.70902375989257,17.877511592786234,40.369154444324366,40.304410360154549,43.061775908341687,12.069075736460535,11.57319282104471,10.532839554425696,44.451643365301138,44.455312848072388,45.036957363908456,45.67403166868425]
[null,{"$f":"C831","v":"Underground Distribution Cables"},null,"Initial Asset Base",null,null,18.779969849788031,18.721244327125213,18.664867825368905,18.610746383682848,18.558789799664233,18.508911479006365,18.461028291174813,18.415060430856521,18.370931284950963,18.32856730488162,18.287897884015059,18.248855239983158,18.211374301712532,18.175392600972735,18.140850168262524,18.107689432860727,18.075855126874991,18.045294193128694,18.015955696732252,17.987790740191659,17.960752381912695,17.934795557964883,17.909877006974995,17.885955198024693,17.862990261432412,17.840943922303811,17.819779436740362,17.799461530599448,17.779956340704167,13.757690878864562,0.43142359217969528,0.41416664849250751,0.39759998255280715,0.38169598325069481,0.36642814392066708,0.35177101816384032,0.33770017743728675,0.32419217033979519,0.31122448352620352,0.29877550418515536,0.28682448401774913,0.27535150465703923,0.26433744447075769,0.25376394669192742,0.2436133888242504,0.23386885327128035,0.22451409914042911,0.215533535174812,0.20691219376781952,0.1986357060171067,0.19069027777642242,0.18306266666536555,0.17574015999875084,0.16871055359880088,0.16196213145484881]
[null,null,null,"Capex in year",0]
[null,null,null,null,1,null,null,0.89339103065904479,0.85765538943268294,0.82334917385537565,0.79041520690116074,0.75879859862511423,0.72844665468010972,0.69930878849290523,0.67133643695318912,0.6444829794750615,0.61870366029605905,0.59395551388421675,0.57019729332884805,0.54738940159569416,0.52549382553186641,0.50447407251059173,0.48429510961016808,0.46492330522576142,0.44632637301673095,0.42847331809606171,0.41133438537221922,0.39488100995733044,0.37908576955903722,0.36392233877667574,0.3493654452256087,0.33539082741658433,0.321975194319921,0.30909618654712417,0.29673233908523922,0.28486304552182967,0.27346852370095648,0.26252978275291827,0.25202859144280149,0.24194744778508945,0.23226954987368584,0.22297876787873844,0.21405961716358884,0.20549723247704532,0.19727734317796344,0.18938624945084495,0.18181079947281117,0.17453836749389876,0.16755683279414282,0.16085455948237706,0.15442037710308196,0.14824356201895864,0.14231381953820033,0.13662126675667235,0.13115641608640544,0.12591015944294923,0.12087375306523127,0.11603880294262195,0.11139725082491707,0.10694136079192033,0.10266370636024347]
[null,null,null,null,2,null,null,null,0.95374161447936967,0.91559194990019488,0.87896827190418703,0.84380954102801964,0.81005715938689893,0.77765487301142289,0.74654867809096603,0.71668673096732738,0.68801926172863426,0.6604984912594889,0.63407855160910931,0.6087154095447449,0.58436679316295514,0.56099212143643695,0.53855243657897944,0.51701033911582028,0.49632992555118749,0.47647672852913997,0.45741765938797441,0.43912095301245546,0.42155611489195721,0.4046938702962789,0.38850611548442771,0.37296587086505062,0.35804723603044863,0.34372534658923065,0.3299763327256614,0.31677727941663503,0.30410618823996965,0.29194194071037083,0.28026426308195607,0.26905369255867778,0.25829154485633066,0.24795988306207742,0.23804148773959435,0.22851982823001063,0.21937903510081025,0.2106038736967778,0.20217971874890675,0.19409252999895044,0.1863288287989924,0.17887567564703272,0.17172064862115147,0.16485182267630547,0.15825774976925328,0.15192743977848322,0.14585034218734391,0.14001632849985013,0.1344156753598561,0.12903904834546182,0.12387748641164334,0.11892238695517759,0.11416549147697053]
[null,null,null,null,3,null,null,null,null,1.0169716632250765,0.97629279669607361,0.93724108482823054,0.89975144143510133,0.86376138377769718,0.82921092842658939,0.79604249128952587,0.76420079163794485,0.73363275997242694,0.70428744957352996,0.67611595159058868,0.64907131352696512,0.62310846098588657,0.59818412254645104,0.57425675764459305,0.55128648733880936,0.529235027845257,0.50806562673144673,0.48774300166218887,0.46823328159570132,0.44950395033187329,0.43152379231859833,0.41426284062585439,0.39769232700082024,0.38178463392078743,0.36651324856395601,0.35185271862139778,0.3377786098765419,0.32426746548148028,0.31129676686222107,0.29884489618773225,0.28689110034022303,0.27541545632661407,0.26439883807354958,0.25382288455060759,0.24366996916858322,0.23392317040183994,0.2245662435857663,0.21558359384233566,0.20696025008864222,0.19868184008509654,0.19073456648169268,0.18310518382242488,0.17578097646952795,0.16874973741074681,0.16199974791431698,0.15551975799774423,0.14929896767783443,0.14332700897072112,0.13759392861189224,0.13209017146741656,0.12680656460871984]
[null,null,null,null,4,null,null,null,null,null,1.0731324117015633,1.0302071152335006,0.98899883062416061,0.94943887739919419,0.91146132230322641,0.87500286941109739,0.84000275463465346,0.80640264444926735,0.77414653867129657,0.7431806771244448,0.71345345003946692,0.68491531203788825,0.65751869955637277,0.63121795157411786,0.60596923351115317,0.58173046417070695,0.55846124560387866,0.53612279577972355,0.51467788394853464,0.49409076859059325,0.4743271378469695,0.45535405233309073,0.43713989023976707,0.41965429463017634,0.40286812284496926,0.38675339793117053,0.37128326201392375,0.35643193153336677,0.34217465427203203,0.32848766810115076,0.31534816137710475,0.30273423492202051,0.29062486552513972,0.27899987090413414,0.26783987606796883,0.25712628102524998,0.24684122978423997,0.23696758059287032,0.22748887736915546,0.21838932227438929,0.20965374938341366,0.20126759940807712,0.19321689543175408,0.18548821961448395,0.17806869082990456,0.17094594319670844,0.16410810546884005,0.15754378125008639,0.15124203000008291,0.14519234880007956,0.13938465484807636]
[null,null,null,null,5,null,null,null,null,null,null,1.1485072235640252,1.1025669346214644,1.0584642572366056,1.0161256869471413,0.97548065946925577,0.93646143309048557,0.89900297576686616,0.86304285673619163,0.82852114246674391,0.79538029676807409,0.76356508489735109,0.73302248150145699,0.70370158224139878,0.67555351895174287,0.64853137819367324,0.6225901230659262,0.59768651814328921,0.57377905741755764,0.55082789512085528,0.52879477931602115,0.50764298814338027,0.48733726861764504,0.46784377787293929,0.44913002675802166,0.43116482568770087,0.41391823266019279,0.39736150335378506,0.38146704321963365,0.36620836149084834,0.35156002703121442,0.3374976259499658,0.32399772091196721,0.31103781207548842,0.29859629959246886,0.28665244760877012,0.27518634970441935,0.26417889571624253,0.25361173988759289,0.24346727029208917,0.23372857948040557,0.22437943630118934,0.21540425884914183,0.20678808849517619,0.19851656495536912,0.19057590235715435,0.18295286626286822,0.17563475161235342,0.1686093615478593,0.16186498708594496,0.15539038760250717]
[null,null,null,null,6,null,null,null,null,null,null,null,0,0,0,0,0,0,0,0,0,0,0,0,0,0,0,0,0,0,0,0,0,0,0,0,0,0,0,0,0,0,0,0,0,0,0,0,0,0,0,0,0,0,0,0,0,0,0,0,0]
[null,null,null,null,7,null,null,null,null,null,null,null,null,0,0,0,0,0,0,0,0,0,0,0,0,0,0,0,0,0,0,0,0,0,0,0,0,0,0,0,0,0,0,0,0,0,0,0,0,0,0,0,0,0,0,0,0,0,0,0,0]
[null,null,null,null,8,null,null,null,null,null,null,null,null,null,0,0,0,0,0,0,0,0,0,0,0,0,0,0,0,0,0,0,0,0,0,0,0,0,0,0,0,0,0,0,0,0,0,0,0,0,0,0,0,0,0,0,0,0,0,0,0]
[null,null,null,null,9,null,null,null,null,null,null,null,null,null,null,0,0,0,0,0,0,0,0,0,0,0,0,0,0,0,0,0,0,0,0,0,0,0,0,0,0,0,0,0,0,0,0,0,0,0,0,0,0,0,0,0,0,0,0,0,0]
[null,null,null,null,10,null,null,null,null,null,null,null,null,null,null,null,0,0,0,0,0,0,0,0,0,0,0,0,0,0,0,0,0,0,0,0,0,0,0,0,0,0,0,0,0,0,0,0,0,0,0,0,0,0,0,0,0,0,0,0,0]
[null,null,{"$f":"Asset4","v":"Underground Distribution Cables"},null,null,null,26.90814336405969,27.97153697569544,29.20720169641617,30.429605524239879,31.84972843432152,23.227475042285253,22.990849311922549,22.763688610774345,22.545614337672077,22.336263035493889,22.135285785402836,21.942347625315424,21.757126991631512,21.579315183294952,21.408615847291852,21.244744484728884,21.087427976668419,20.936404128930384,20.791421235101879,20.652237657026497,20.518621422074141,20.390349836519867,20.267209114387779,20.148994021140965,20.035507531624038,19.926560501687778,19.82197135294896,19.721565770159707,19.625176410682009,15.529102146043297,2.1319784086712796,2.0466992723244286,1.9648313014314516,1.8862380493741933,1.8107885273992259,1.7383569863032566,1.6688227068511265,1.6020697985770813,1.5379870066339982,1.4764675263686382,1.4174088253138926,1.3607124723013371,1.3062839734092835,1.2540326144729124,1.2038713098939957,1.1557164574982359,1.1094877991983065,1.0651082872303745,1.0225039557411595,0.98160379751151305,0.94233964561105243,0.90464605978661028,0.86846021739514578,0.83372180869933998,0.8003729363513663]
[null,{"$f":"C844","v":"Distribution Equipment"},null,"Initial Asset Base",null,null,0.92337723391103499,0.92211222631998835,0.92090344128854362,0.91974838003627457,0.91864465483966173,0.91758998409623171,0.9165821876080652,0.91561918207492843,0.91469897678770873,0.91381966951325444,0.91297944256210928,0.9121765590310148,0.91140935921241373,0.91067625716352807,0.90997573742792615,0.90930635190279563,0.90866671684544842,0.90805551001287244,0.90747146792841082,0.90691338326992521,0.9063801023740391,0.90587052285130343,0.90538359130735602,0.90491830116536187,0.90447369058523408,0.90404884047533418,0.90364287259254095,0.90325494772676074,0.90288426396612631,0.90253005503929806,0.92428814237014456,0.92765420356070305,0.89954451320557594,0.42896200197640993,4.9246580222423342E-2,0,0,0,0,0,0,0,0,0,0,0,0,0,0,0,0,0,0,0,0]
[null,null,null,"Capex in year",0]
[null,null,null,null,1,null,null,0.11822617575121926,0.11297167905116506,0.10795071553777995,0.10315290595832306,9.856833236017537E-2,9.4187517588612005E-2,9.0001405695784825E-2,8.6001343220416596E-2,8.2179061299509193E-2,7.8526658575086561E-2,7.5036584860638272E-2,7.1701625533498792E-2,6.8514886620898843E-2,6.5469780548858894E-2,6.2560012524465164E-2,5.9779567523377826E-2,5.7122697855672144E-2,5.4583911284308943E-2,5.2157959671672992E-2,4.9839828130709744E-2,4.7624724658233752E-2,4.5508070228978924E-2,4.3485489329913189E-2,4.1552800915250376E-2,3.9706009763461475E-2,3.7941298218418747E-2,3.6255018297600125E-2,3.4643684151040126E-2,3.3103964855438345E-2,3.1632677528529982E-2,3.0226780749484199E-2,2.8883368271729343E-2,2.7599663015208029E-2,2.6373011325643229E-2,2.5200877488947983E-2,0.54181886601238149,0,0,0,0,0,0,0,0,0,0,0,0,0,0,0,0,0,0]
[null,null,null,null,2,null,null,null,0.1266684773400075,0.12103876723600716,0.1156592664699624,0.11051885462685296,0.10560690553232617,0.10091326528644499,9.642823127371411E-2,9.2142532105993491E-2,8.8047308456838211E-2,8.413409474764541E-2,8.0394801647750064E-2,7.6821699352294506E-2,7.3407401603303626E-2,7.0144850420934574E-2,6.7027301513337481E-2,6.4048310334966926E-2,6.1201718764523953E-2,5.8481642374989554E-2,5.5882458269434457E-2,5.3398793457459598E-2,5.1025513748239174E-2,4.8757713137206317E-2,4.6590703664441596E-2,4.4520005723799751E-2,4.2541338802741982E-2,4.0650612633731223E-2,3.8843918738898725E-2,3.7117522350503231E-2,3.5467854690480867E-2,3.3891505593126169E-2,3.2385216455653898E-2,3.0945873502069274E-2,2.9570501346421748E-2,2.8256256842136337E-2,2.7000423204708055E-2,0.58050909890122337,0,0,0,0,0,0,0,0,0,0,0,0,0,0,0,0,0]
[null,null,null,null,3,null,null,null,null,0.13487188255393329,0.12887757666264735,0.1231496843665297,0.1176763650613506,0.11244630439195724,0.10744869086342582,0.102673193491718,9.8109940447641639E-2,9.3749498649968663E-2,8.9582854265525605E-2,8.5601394075946705E-2,8.1796887672571289E-2,7.8161470442679237E-2,7.468762731189349E-2,7.1368177209142666E-2,6.8196258222069664E-2,6.5165313412199902E-2,6.2269077260546576E-2,5.9501562715633401E-2,5.6857048817160798E-2,5.4330068869731435E-2,5.1915399142187811E-2,4.9608048069201688E-2,4.7403245932792729E-2,4.5296435002446386E-2,4.3283260113448761E-2,4.1359559663962153E-2,3.9521357012230494E-2,3.7764852256131361E-2,3.6086414378081071E-2,3.4482573739055236E-2,3.2950014906208344E-2,3.1485569799265749E-2,3.0086211141520616E-2,2.8749046201897482E-2,0.61810449334079598,0,0,0,0,0,0,0,0,0,0,0,0,0,0,0,0]
[null,null,null,null,4,null,null,null,null,null,0.14167096861515327,0.13537448112114644,0.12935783751576216,0.1236086002928394,0.11811488472426876,0.11286533429207904,0.10784909721243108,0.10305580400298971,9.8475546047301271E-2,9.4098855111865651E-2,8.9916683773560518E-2,8.5920386716957814E-2,8.2101702862870801E-2,7.8452738291187665E-2,7.4965949922690428E-2,7.1634129926126403E-2,6.8450390818298568E-2,6.5408151226374181E-2,6.2501122282979771E-2,5.9723294625958448E-2,5.7068925975915848E-2,5.4532529265875145E-2,5.2108861298502916E-2,4.9792911907458347E-2,4.7579893600460194E-2,4.5465231662661962E-2,4.3444554699876986E-2,4.1513685602104666E-2,3.9668632908677795E-2,3.790558255718101E-2,3.6220889999084072E-2,3.4611072665791456E-2,3.3072802769534053E-2,3.1602900424221425E-2,3.019832707203381E-2,0.64926403204872685,0,0,0,0,0,0,0,0,0,0,0,0,0,0,0]
[null,null,null,null,5,null,null,null,null,null,null,0.15125715558599315,0.14453461533772677,0.13811085465605002,0.13197259444911447,0.12610714580693164,0.12050238377106798,0.11514672227013165,0.1100290901692369,0.10513890838393747,0.10046606801131802,9.6000909433037213E-2,9.1734202347124455E-2,8.7657126687252271E-2,8.3761254390041048E-2,8.0038531972705898E-2,7.6481263885030071E-2,7.3082096601250965E-2,6.983400341897314E-2,6.6730269933685457E-2,6.3764480158854997E-2,6.0930503262905888E-2,5.8222480895665625E-2,5.5634815078080477E-2,5.316215663016579E-2,5.0799394113269537E-2,4.8541643263790887E-2,4.6384236896511291E-2,4.432271525666634E-2,4.2352816800814493E-2,4.0470469387444946E-2,3.8671781859114067E-2,3.6953035998708986E-2,3.5310678843210812E-2,3.3741315339068108E-2,3.2241701323998409E-2,0.69319657846596572,0,0,0,0,0,0,0,0,0,0,0,0,0,0]
[null,null,null,null,6,null,null,null,null,null,null,null,0,0,0,0,0,0,0,0,0,0,0,0,0,0,0,0,0,0,0,0,0,0,0,0,0,0,0,0,0,0,0,0,0,0,0,0,0,0,0,0,0,0,0,0,0,0,0,0,0]
[null,null,null,null,7,null,null,null,null,null,null,null,null,0,0,0,0,0,0,0,0,0,0,0,0,0,0,0,0,0,0,0,0,0,0,0,0,0,0,0,0,0,0,0,0,0,0,0,0,0,0,0,0,0,0,0,0,0,0,0,0]
[null,null,null,null,8,null,null,null,null,null,null,null,null,null,0,0,0,0,0,0,0,0,0,0,0,0,0,0,0,0,0,0,0,0,0,0,0,0,0,0,0,0,0,0,0,0,0,0,0,0,0,0,0,0,0,0,0,0,0,0,0]
[null,null,null,null,9,null,null,null,null,null,null,null,null,null,null,0,0,0,0,0,0,0,0,0,0,0,0,0,0,0,0,0,0,0,0,0,0,0,0,0,0,0,0,0,0,0,0,0,0,0,0,0,0,0,0,0,0,0,0,0,0]
[null,null,null,null,10,null,null,null,null,null,null,null,null,null,null,null,0,0,0,0,0,0,0,0,0,0,0,0,0,0,0,0,0,0,0,0,0,0,0,0,0,0,0,0,0,0,0,0,0,0,0,0,0,0,0,0,0,0,0,0,0]
[null,null,{"$f":"Asset5","v":"Distribution Equipment"},null,null,null,1.9000422712473197,2.0443666319878151,2.2094437848461275,2.3723353362926813,2.5579127403220339,1.5364584921569293,1.507945428643843,1.480699612398005,1.4546647213186485,1.4297869365094857,1.4060148310251745,1.3832992635623884,1.3615932768757264,1.3408520007084714,1.3210325590375385,1.3020939814408696,1.2839971184040524,1.266704560391094,1.2501805605120448,1.2343909606276202,1.2193031207380585,1.2048858515102554,1.1911093498036875,1.1779451370618566,1.1653660004418849,1.1533459365605783,1.1418600977406632,1.1308847406460774,1.12039717720014,1.1103757276851334,1.1228962295650537,1.1174352646580605,1.0808908604763843,0.602248511590738,0.21483146718722571,0.15822555865525559,0.66893133912685332,0.67617172437055306,0.68204413575189793,0.68150573337272524,0.69319657846596572,0,0,0,0,0,0,0,0,0,0,0,0,0,0]
[null,{"$f":"C857","v":"Substation Bays"},null,"Initial Asset Base",null,null,33.15701203096021,32.829665879298972,32.518687035220808,32.223257133346543,31.94259872656599,31.67597324012447,31.422679028005021,31.18204952649155,30.953451500053745,30.736283374937834,30.529973656077718,30.333979423160617,30.147784901889359,29.970900106681668,29.802859551234363,29.64322102355942,29.491564422268226,29.347490651041596,29.210620568376289,29.08059398984425,28.957068740238817,28.839719753113648,28.728238215344746,28.622330754464283,28.521718666627848,28.426137183183233,18.423424215318899,1.6389834873665465,1.5570343129982191,1.4791825973483079,1.4052234674808926,1.334962294106848,1.2682141794015056,1.2048034704314301,1.1445632969098589,1.0873351320643658,1.0329683754611476,0.98131995668809047,0.932253958853686,0.88564126091100182,4.56004381378209,5.4744274892065627,6.1574226209732981,0.31372105698111852,0.32156897636596504,0,0,0,0,0,0,0,0,0,0]
[null,null,null,"Capex in year",0]
[null,null,null,null,1,null,null,3.9533855340209665,3.7557162573199179,3.5679304444539222,3.3895339222312262,3.2200572261196649,3.0590543648136816,2.9061016465729974,2.7607965642443477,2.6227567360321302,2.4916188992305237,2.3670379542689974,2.2486860565555475,2.1362517537277701,2.0294391660413815,1.9279672077393124,1.8315688473523466,1.7399904049847295,1.6529908847354928,1.5703413404987181,1.4918242734737825,1.4172330598000933,1.3463714068100885,1.2790528364695843,1.2151001946461051,1.1543451849137998,1.0966279256681097,1.0417965293847045,0.98970670291546914,0.94022136776969567,0.89321029938121088,0.84854978441215045,0.80612229519154299,0.76581618043196586,0.72752537141036777,0.69114910283984943,0.65659164769785727,0.62376206531296463,0.5925739620473166,0.56294526394495115,0.53479800074770345,0.50805810071031843,0.4826551956748027,0.45852243589106223,0.43559631409650951,0.41381649839168377,7.8625134694419927,0,0,0,0,0,0,0,0]
[null,null,null,null,2,null,null,null,4.1994831936018002,3.9895090339217107,3.7900335822256248,3.6005319031143439,3.4205053079586265,3.2494800425606947,3.0870060404326605,2.932655738411027,2.7860229514904757,2.6467218039159519,2.5143857137201544,2.388666428034147,2.2692331066324392,2.1557714513008173,2.0479828787357763,1.9455837347989879,1.8483045480590385,1.7558893206560864,1.6680948546232821,1.5846901118921179,1.5054556062975122,1.4301828259826366,1.358673684683505,1.2907400004493299,1.2262030004268631,1.16489285040552,1.1066482078852438,1.0513157974909817,0.9987500076164324,0.94881250723561061,0.90137188187382977,0.85630328778013842,0.81348812339113152,0.77281371722157532,0.73417303136049628,0.69746437979247133,0.66259116080284741,0.62946160276270513,0.59798852262456992,0.56808909649334116,0.53968464166867425,0.51270040958524066,0.48706538910597885,0.46271211965067993,0.43957651366814621,8.3519537596947799,0,0,0,0,0,0,0]
[null,null,null,null,3,null,null,null,null,4.4868311145349926,4.2624895588082437,4.0493650808678314,3.8468968268244397,3.6545519854832174,3.471824386209057,3.2982331668986036,3.1333215085536739,2.9766554331259898,2.8278226614696904,2.6864315283962057,2.5521099519763957,2.4245044543775758,2.303279231658697,2.188115270075762,2.0787095065719736,1.974774031243375,1.876035329681206,1.7822335631971455,1.6931218850372884,1.6084657907854241,1.5280425012461529,1.4516403761838452,1.3790583573746529,1.3101054395059202,1.2446001675306242,1.1823701591540932,1.1232516511963888,1.0670890686365695,1.0137346152047406,0.96304788444450373,0.91489549022227834,0.86915071571116442,0.82569317992560587,0.78440852092932545,0.74518809488285953,0.7079286901387164,0.67253225563178065,0.63890564285019169,0.60696036070768222,0.57661234267229777,0.54778172553868321,0.52039263926174895,0.49437300729866185,0.4696543569337287,8.9234327817408428,0,0,0,0,0,0]
[null,null,null,null,4,null,null,null,null,null,4.7644544593723417,4.5262317364037248,4.2999201495835386,4.0849241421043621,3.8806779349991434,3.6866440382491863,3.5023118363367276,3.3271962445198913,3.1608364322938964,3.0027946106792012,2.8526548801452414,2.710022136137979,2.5745210293310801,2.445794977864526,2.3235052289712996,2.2073299675227349,2.0969634691465981,1.992115295689268,1.8925095309048048,1.7978840543595647,1.7079898516415863,1.6225903590595072,1.5414608411065318,1.4643877990512053,1.3911684090986449,1.3216099886437129,1.2555294892115272,1.1927530147509509,1.1331153640134033,1.076459595812733,1.0226366160220963,0.97150478522099137,0.92292954595994203,0.87678306866194478,0.83294391522884725,0.79129671946740465,0.75173188349403408,0.71414528931933252,0.67843802485336591,0.64451612361069766,0.61229031743016271,0.58167580155865439,0.55259201148072135,0.52496241090668505,0.49871429036135101,9.4755715168656707,0,0,0,0,0]
[null,null,null,null,5,null,null,null,null,null,null,5.1158630626231334,4.8600699094919761,4.6170664140173772,4.3862130933165089,4.1669024386506832,3.9585573167181489,3.7606294508822415,3.5725979783381292,3.393968079421223,3.2242696754501625,3.0630561916776542,2.9099033820937716,2.7644082129890828,2.6261878023396288,2.4948784122226471,2.3701344916115148,2.2516277670309388,2.1390463786793918,2.0320940597454227,1.9304893567581514,1.8339648889202438,1.7422666444742312,1.65515331225052,1.572395646637994,1.4937758643060939,1.4190870710907895,1.3481327175362503,1.2807260816594379,1.216689777576466,1.155855288697643,1.0980625242627611,1.0431593980496232,0.99100142814714198,0.94145135673978475,0.89437878890279521,0.84965984945765527,0.80717685698477271,0.7668180141355343,0.72847711342875743,0.69205325775731985,0.65745059486945367,0.62457806512598069,0.59334916186968201,0.56368170377619797,0.53549761858738809,10.174454753160376,0,0,0,0]
[null,null,null,null,6,null,null,null,null,null,null,null,0,0,0,0,0,0,0,0,0,0,0,0,0,0,0,0,0,0,0,0,0,0,0,0,0,0,0,0,0,0,0,0,0,0,0,0,0,0,0,0,0,0,0,0,0,0,0,0,0]
[null,null,null,null,7,null,null,null,null,null,null,null,null,0,0,0,0,0,0,0,0,0,0,0,0,0,0,0,0,0,0,0,0,0,0,0,0,0,0,0,0,0,0,0,0,0,0,0,0,0,0,0,0,0,0,0,0,0,0,0,0]
[null,null,null,null,8,null,null,null,null,null,null,null,null,null,0,0,0,0,0,0,0,0,0,0,0,0,0,0,0,0,0,0,0,0,0,0,0,0,0,0,0,0,0,0,0,0,0,0,0,0,0,0,0,0,0,0,0,0,0,0,0]
[null,null,null,null,9,null,null,null,null,null,null,null,null,null,null,0,0,0,0,0,0,0,0,0,0,0,0,0,0,0,0,0,0,0,0,0,0,0,0,0,0,0,0,0,0,0,0,0,0,0,0,0,0,0,0,0,0,0,0,0,0]
[null,null,null,null,10,null,null,null,null,null,null,null,null,null,null,null,0,0,0,0,0,0,0,0,0,0,0,0,0,0,0,0,0,0,0,0,0,0,0,0,0,0,0,0,0,0,0,0,0,0,0,0,0,0,0,0,0,0,0,0,0]
[null,null,{"$f":"Asset6","v":"Substation Bays"},null,null,null,61.580438340822454,66.011235532058052,71.012952440212004,75.970385641985317,81.632562041372424,52.188022249253166,50.909125586677284,49.694173757230196,48.539969519255457,47.443475493179463,46.401806168407269,45.412220309873689,44.472113744266778,43.579012506940217,42.730566331479977,41.924542464792758,41.158819791439903,40.431383251754681,39.740318539053725,39.083807061987812,38.460121158775209,37.867619550723212,37.304743023073826,36.770010321806922,36.262014255603347,35.779417992709959,25.409040984369287,8.2753194179644165,7.8615534470661954,7.4684757747128856,7.0950519859772418,6.7402993866783802,6.4032844173444605,6.0831201964772372,5.7789641866533756,5.4900159773207076,5.2155151784546714,4.9547394195319381,4.7070024485553414,4.4716523261275745,7.9667543257378339,8.7108024755645186,9.2319788580133579,3.2345494821691743,3.0963559802946192,2.6360476537322204,9.9736330670155038,9.939919689404876,9.9858287758783906,10.011069135453059,10.174454753160376,0,0,0,0]
[null,{"$f":"C870","v":"Substation Establishment"},null,"Initial Asset Base",null,null,6.9905665558003101,6.9485375333853474,6.9086099620911323,6.8706787693616294,6.8346441362685999,6.8004112348302233,6.7678899784637645,6.7369947849156295,6.7076443510449009,6.6797614388677076,6.6532726722993756,6.6281083440594593,6.6042022322315397,6.581491425995015,6.5599161600703173,6.5394196574418526,6.5199479799448143,6.501449886322626,6.4838766973815476,6.4671821678875228,6.4513223648681999,6.4362555519998415,6.4219420797749027,6.4083442811612095,1.6990718633816897,0.23316825172829056,0.221509839141876,0.21043434718478221,0.19991262982554309,0.1899169983342659,0.18042114841755261,0.171400090996675,0.16283008644684124,0.15468858212449918,0.14695415301827425,0.13960644536736047,0.13262612309899249,0.12599481694404285,0.11969507609684071,0.11371032229199868,0.10802480617739874,0.10262356586852878,9.7492387575102313E-2,9.2617768196347233E-2,8.7986879786529901E-2,8.3587535797203405E-2,7.9408159007343229E-2,7.5437751056976032E-2,7.1665863504127236E-2,6.8082570328920899E-2,6.4678441812474854E-2,6.144451972185111E-2,5.837229373575855E-2,5.5453679048970611E-2,5.2680995096522083E-2]
[null,null,null,"Capex in year",0]
[null,null,null,null,1,null,null,1.7982597138797947,1.7083467281858049,1.6229293917765149,1.5417829221876891,1.4646937760783043,1.3914590872743893,1.3218861329106699,1.2557918262651364,1.1930022349518794,1.1333521232042854,1.0766845170440711,1.0228502911918675,0.97170777663227403,0.92312238780066025,0.8769662684106273,0.833117954990096,0.79146205724059104,0.75188895437856162,0.71429450665963357,0.67857978132665187,0.64465079226031929,0.61241825264730343,0.58179734001493821,0.55270747301419143,0.52507209936348187,0.49881849439530779,0.4738775696755424,0.45018369119176516,0.42767450663217699,0.40629078130056817,0.38597624223553972,0.36667743012376275,0.34834355861757466,0.33092638068669589,0.31438006165236115,0.29866105856974307,0.283728005641256,0.26954160535919325,0.25606452509123356,0.24326129883667191,0.23109823389483833,0.21954332220009648,0.20856615609009169,0.19813784828558703,0.18823095587130753,0.1788194080777423,0.16987843767385513,0.16138451579016255,0.15331529000065452,0.14564952550062174,0.13836704922559059,0.13144869676431092,0.12487626192609547,0.11863244882979061]
[null,null,null,null,2,null,null,null,1.9233846466261975,1.8272154142948875,1.735854643580143,1.649061911401136,1.5666088158310791,1.4882783750395252,1.4138644562875489,1.3431712334731714,1.2760126717995128,1.2122120382095372,1.1516014362990603,1.0940213644841073,1.039320296259902,0.98735428144690696,0.93798656737456154,0.89108723900583342,0.8465328770555417,0.80420623320276463,0.7639959215426263,0.72579612546549499,0.68950631919222016,0.65503100323260921,0.62227945307097876,0.59116548041742978,0.56160720639655826,0.53352684607673029,0.50685050377289387,0.4815079785842491,0.45743257965503653,0.43456095067228467,0.41283290313867038,0.39219125798173682,0.37258169508265004,0.35395261032851749,0.33625497981209168,0.31944223082148721,0.30347011928041284,0.28829661331639223,0.27388178265057272,0.26018769351804422,0.24717830884214217,0.23481939340003494,0.22307842373003306,0.21192450254353157,0.20132827741635495,0.1912618635455374,0.18169877036826065,0.1726138318498478,0.16398314025735561,0.15578398324448772,0.14799478408226321,0.14059504487814997,0.13356529263424263]
[null,null,null,null,3,null,null,null,null,2.0530458573615262,1.9503935644934502,1.8528738862687775,1.7602301919553387,1.672218682357572,1.5886077482396932,1.5091773608277084,1.4337184927863231,1.3620325681470069,1.2939309397396566,1.2292343927526739,1.1677726731150402,1.1093840394592882,1.0539148374863236,1.0012190956120075,0.95115814083140704,0.90360023378983678,0.85842022210034485,0.81549921099532752,0.77472425044556115,0.73598803792328304,0.69918863602711889,0.66422920422576281,0.63101774401447475,0.599466856813751,0.56949351397306336,0.54101883827441011,0.51396789636068962,0.48826950154265508,0.46385602646552243,0.44066322514224621,0.41863006388513391,0.39769856069087733,0.3778136326563335,0.35892295102351679,0.34097680347234099,0.32392796329872375,0.30773156513378769,0.29234498687709837,0.27772773753324353,0.26384135065658149,0.25064928312375229,0.23811681896756484,0.22621097801918674,0.21490042911822727,0.20415540766231574,0.19394763727920009,0.18425025541524001,0.17503774264447786,0.166285855512254,0.15797156273664115,0.15007298459980911]
[null,null,null,null,4,null,null,null,null,null,2.1664664111455081,2.0581430905882327,1.955235936058821,1.85747413925588,1.7646004322930857,1.6763704106784314,1.5925518901445099,1.5129242956372844,1.4372780808554202,1.3654141768126493,1.2971434679720169,1.2322862945734159,1.1706719798447451,1.1121383808525078,1.0565314618098824,1.0037048887193885,0.95351964428341907,0.90584366206924816,0.86055147896578577,0.8175239050174965,0.77664770976662167,0.73781532427829066,0.70092455806437615,0.66587833016115727,0.63258441365309948,0.60095519297044453,0.57090743332192229,0.54236206165582601,0.51524395857303451,0.48948176064438265,0.46500767261216364,0.44175728898155531,0.41966942453247746,0.39868595330585355,0.37875165564056101,0.35981407285853284,0.34182336921560613,0.32473220075482595,0.30849559071708477,0.29307081118123046,0.27841727062216892,0.26449640709106037,0.2512715867365074,0.23870800739968204,0.22677260702969804,0.21543397667821332,0.20466227784430269,0.1944291639520877,0.18470770575448336,0.17547232046675917,0.16669870444342116]
[null,null,null,null,5,null,null,null,null,null,null,2.3209383849903542,2.2048914657408365,2.0946468924537949,1.9899145478311049,1.8904188204395496,1.7958978794175722,1.7061029854466938,1.6207978361743589,1.5397579443656408,1.4627700471473588,1.389631544789991,1.3201499675504913,1.2541424691729668,1.1914353457143185,1.1318635784286026,1.0752703995071724,1.0215068795318138,0.9704315355552231,0.92190995877746185,0.87581446083858872,0.83202373779665928,0.79042255090682623,0.75090142336148491,0.71335635219341076,0.67768853458374034,0.64380410785455355,0.61161390246182568,0.58103320733873431,0.55198154697179758,0.52438246962320789,0.4981633461420476,0.47325517883494506,0.44959241989319776,0.4271127988985377,0.40575715895361064,0.38546930100593002,0.36619583595563338,0.34788604415785152,0.33049174194995889,0.31396715485246107,0.29826879710983789,0.28335535725434619,0.26918758939162901,0.25572820992204764,0.24294179942594527,0.23079470945464814,0.21925497398191568,0.20829222528281977,0.19787761401867884,0.18798373331774487]
[null,null,null,null,6,null,null,null,null,null,null,null,0,0,0,0,0,0,0,0,0,0,0,0,0,0,0,0,0,0,0,0,0,0,0,0,0,0,0,0,0,0,0,0,0,0,0,0,0,0,0,0,0,0,0,0,0,0,0,0,0]
[null,null,null,null,7,null,null,null,null,null,null,null,null,0,0,0,0,0,0,0,0,0,0,0,0,0,0,0,0,0,0,0,0,0,0,0,0,0,0,0,0,0,0,0,0,0,0,0,0,0,0,0,0,0,0,0,0,0,0,0,0]
[null,null,null,null,8,null,null,null,null,null,null,null,null,null,0,0,0,0,0,0,0,0,0,0,0,0,0,0,0,0,0,0,0,0,0,0,0,0,0,0,0,0,0,0,0,0,0,0,0,0,0,0,0,0,0,0,0,0,0,0,0]
[null,null,null,null,9,null,null,null,null,null,null,null,null,null,null,0,0,0,0,0,0,0,0,0,0,0,0,0,0,0,0,0,0,0,0,0,0,0,0,0,0,0,0,0,0,0,0,0,0,0,0,0,0,0,0,0,0,0,0,0,0]
[null,null,null,null,10,null,null,null,null,null,null,null,null,null,null,null,0,0,0,0,0,0,0,0,0,0,0,0,0,0,0,0,0,0,0,0,0,0,0,0,0,0,0,0,0,0,0,0,0,0,0,0,0,0,0,0,0,0,0,0,0]
[null,null,{"$f":"Asset7","v":"Substation Establishment"},null,null,null,20.100562651367849,22.24205844015702,24.657961600691415,27.040813068906566,29.742391576708116,16.14612228415703,15.646315475324229,15.171499006933072,14.720423361961473,14.291901499238449,13.884805729651578,13.498064748544053,13.130660816491902,12.781627081042361,12.450045032365296,12.135042086122082,11.835789287191034,11.551499128206533,11.281423477171257,11.024851608687747,10.781108333628413,10.549552222322044,10.329573916580996,10.120594526126999,5.2257095960991888,3.5834740978099151,3.4043003929194193,3.234085373273448,3.072381104609776,2.918762049379287,2.7728239469103229,2.6341827495648058,2.5024736120865656,2.3773499314822373,2.2584824349081258,2.1455583131627192,2.0382803975045833,1.936366377629354,1.8395480587478865,1.7475706558104918,1.6601921230199672,1.577182516868969,1.4983233910255209,1.4234072214742446,1.3522368604005321,1.2846250173805056,1.2203937665114808,1.1593740781859068,1.1014053742766119,1.0463351055627819,0.99401835028464314,0.94431743277041047,0.89710156113188977,0.85224648307529527,0.80963415892153046]
[null,{"$f":"C883","v":"Distribution Substation Switchgear"},null,"Initial Asset Base",null,null,13.649225904484753,13.537233987051073,13.430841665489075,13.329768960005181,13.233749889795476,13.142531773096259,13.055874562232004,12.973550211910961,12.895342079105967,12.821044352941223,12.750461513084719,12.68340781522104,12.619706802250546,12.559190839928576,12.501700675722702,12.447085019727124,12.395200146531325,12.345909516995315,12.299083418936105,12.254598625779856,12.212338072281419,12.172190546457905,12.134050396925566,12.097817254869843,12.063395769916907,12.030695359211618,9.1970302707724993,0.56073029256894313,0.53269377794049588,0.50605908904347108,0.48075613459129746,0.4567183278617325,0.43388241146864587,0.41218829089521353,0.3915788763504528,0.37199993253293012,0.3533999359062836,0.33572993911096949,0.31894344215542098,0.30299627004765001,1.4449249686695773,1.9088769786368616,1.8724247977259334,0.26207323379731029,0.26862915207566562,0,0,0,0,0,0,0,0,0,0]
[null,null,null,"Capex in year",0]
[null,null,null,null,1,null,null,1.9981716721013041,1.8982630884962388,1.803349934071427,1.7131824373678555,1.6275233154994628,1.5461471497244899,1.4688397922382652,1.395397802626352,1.3256279124950343,1.2593465168702824,1.1963791910267685,1.1365602314754299,1.0797322199016586,1.0257456089065757,0.97445832846124691,0.92573541203818466,0.87944864143627532,0.83547620936446154,0.79370239889623839,0.75401727895142656,0.71631641500385523,0.68050059425366249,0.64647556454097943,0.61415178631393053,0.58344419699823402,0.55427198714832238,0.52655838779090625,0.50023046840136087,0.4752189449812928,0.45145799773222817,0.42888509784561679,0.40744084295333605,0.3870688008056693,0.36771536076538569,0.34932959272711628,0.3318631130907605,0.31526995743622238,0.2995064595644113,0.28453113658619067,0.27030457975688121,0.25678935076903714,0.24394988323058514,0.23175238906905593,0.22016476961560302,0.20915653113482302,3.9739740915616366,0,0,0,0,0,0,0,0]
[null,null,null,null,2,null,null,null,2.1323304103247369,2.0257138898085003,1.9244281953180753,1.8282067855521715,1.7367964462745631,1.6499566239608345,1.567458792762793,1.4890858531246534,1.4146315604684208,1.3438999824449998,1.2767049833227497,1.2128697341566124,1.1522262474487817,1.0946149350763426,1.0398841883225254,0.98788997890639918,0.93849547996107929,0.89157070596302523,0.84699217066487398,0.80464256213163032,0.76441043402504882,0.72618991232379637,0.68988041670760658,0.65538639587222625,0.62261707607861494,0.59148622227468406,0.56191191116094985,0.53381631560290221,0.50712549982275701,0.48176922483161921,0.4576807635900384,0.43479672541053632,0.41305688914000954,0.3924040446830091,0.37278384244885854,0.35414465032641546,0.33643741781009456,0.31961554691958977,0.30363476957361013,0.28845303109492948,0.27403037954018289,0.26032886056317361,0.24731241753501509,0.2349467966582644,0.22319945682535122,4.2407896796816758,0,0,0,0,0,0,0]
[null,null,null,null,3,null,null,null,null,2.2740476678950401,2.1603452845002882,2.0523280202752736,1.94971161926151,1.8522260382984346,1.7596147363835131,1.671633999564337,1.5880522995861204,1.5086496846068143,1.4332172003764736,1.3615563403576498,1.2934785233397674,1.228804597172779,1.1673643673141398,1.108996148948433,1.0535463415010113,1.0008690244259608,0.95082557320466288,0.9032842945444296,0.85812007981720806,0.81521407582634764,0.77445337203503029,0.73573070343327884,0.69894416826161487,0.66399695984853402,0.63079711185610743,0.59925725626330217,0.56929439345013721,0.54082967377763047,0.51378819008874899,0.48809878058431161,0.46369384155509619,0.44050914947734121,0.41848369200347407,0.39755950740330026,0.3776815320331352,0.35879745543147834,0.34085758265990446,0.32381470352690905,0.30762396835056371,0.29224276993303561,0.277630631436384,0.26374909986456496,0.25056164487133686,0.23803356262776987,4.5226376899276275,0,0,0,0,0,0]
[null,null,null,null,4,null,null,null,null,null,2.4007992633309092,2.2807593001643638,2.1667213351561454,2.0583852683983381,1.9554660049784212,1.8576927047295002,1.764808069493025,1.6765676660183741,1.5927392827174554,1.5131023185815824,1.4374472026525034,1.3655748425198784,1.2972961003938843,1.2324312953741901,1.1708097306054805,1.1122692440752064,1.0566557818714462,1.0038229927778739,0.9536318431389802,0.9059502509820313,0.86065273843292978,0.81762010151128328,0.77673909643571903,0.73790214161393308,0.70100703453323632,0.66595668280657461,0.63265884866624589,0.60102590623293362,0.57097461092128687,0.54242588037522244,0.51530458635646148,0.48953935703863821,0.46506238918670634,0.44180926972737106,0.41971880624100244,0.39873286592895241,0.37879622263250462,0.35985641150087955,0.34186359092583563,0.32477041137954399,0.30853189081056664,0.29310529627003845,0.27845003145653674,0.26452752988370992,0.25130115338952452,4.7747219144009634,0,0,0,0,0]
[null,null,null,null,5,null,null,null,null,null,null,2.5700844266191174,2.4415802052881617,2.3195011950237534,2.2035261352725657,2.0933498285089374,1.9886823370834905,1.8892482202293159,1.7947858092178501,1.7050465187569577,1.6197941928191097,1.5388044831781542,1.4618642590192463,1.3887710460682841,1.3193324937648698,1.2533658690766263,1.1906975756227951,1.1311626968416553,1.0746045619995725,1.020874333899594,0.96983061720461416,0.92133908634438344,0.87527213202716436,0.83150852542580622,0.78993309915451604,0.75043644419679012,0.71291462198695088,0.67726889088760311,0.64340544634322294,0.61123517402606176,0.58067341532475858,0.55163974455852061,0.52405775733059456,0.49785486946406476,0.47296212599086157,0.44931401969131851,0.42684831870675244,0.40550590277141474,0.38523060763284395,0.36596907725120187,0.3476706233886418,0.3302870922192096,0.31377273760824914,0.29808410072783681,0.28317989569144508,0.26902090090687275,5.111397117230581,0,0,0,0]
[null,null,null,null,6,null,null,null,null,null,null,null,0,0,0,0,0,0,0,0,0,0,0,0,0,0,0,0,0,0,0,0,0,0,0,0,0,0,0,0,0,0,0,0,0,0,0,0,0,0,0,0,0,0,0,0,0,0,0,0,0]
[null,null,null,null,7,null,null,null,null,null,null,null,null,0,0,0,0,0,0,0,0,0,0,0,0,0,0,0,0,0,0,0,0,0,0,0,0,0,0,0,0,0,0,0,0,0,0,0,0,0,0,0,0,0,0,0,0,0,0,0,0]
[null,null,null,null,8,null,null,null,null,null,null,null,null,null,0,0,0,0,0,0,0,0,0,0,0,0,0,0,0,0,0,0,0,0,0,0,0,0,0,0,0,0,0,0,0,0,0,0,0,0,0,0,0,0,0,0,0,0,0,0,0]
[null,null,null,null,9,null,null,null,null,null,null,null,null,null,null,0,0,0,0,0,0,0,0,0,0,0,0,0,0,0,0,0,0,0,0,0,0,0,0,0,0,0,0,0,0,0,0,0,0,0,0,0,0,0,0,0,0,0,0,0,0]
[null,null,null,null,10,null,null,null,null,null,null,null,null,null,null,null,0,0,0,0,0,0,0,0,0,0,0,0,0,0,0,0,0,0,0,0,0,0,0,0,0,0,0,0,0,0,0,0,0,0,0,0,0,0,0,0,0,0,0,0,0]
[null,null,{"$f":"Asset8","v":"Distribution Substation Switchgear"},null,null,null,28.179122576629659,30.474368864770327,33.069137002201387,35.634190708946392,38.544031399698866,23.501433621206647,22.896831317936872,22.322459129830591,21.776805551129613,21.258434651363689,20.765982296586056,20.298152559547315,19.853714309360505,19.431497971683036,19.03039245088944,18.649342206135529,18.287344473619303,17.943446627728896,17.616743674133005,17.306375868216911,17.011526452596623,16.731419507757348,16.465317910160039,16.212521392442593,15.972364700611017,15.744215843371023,12.724874730723936,3.912182529522807,3.7165734030466666,3.5307447328943331,3.3542074962496167,3.1864971214371356,3.0271722653652793,2.8758136520970146,2.7320229694921641,2.5954218210175553,2.4656507299666774,2.3423681934683431,2.2252497837949261,2.1139872946051796,3.1653664419992307,3.543296378300032,3.4251232274059453,1.7371367419933212,1.669939484861876,1.3312448161469004,5.0399579623231103,5.0414348729209921,5.0571187390085974,5.0437428153078363,5.111397117230581,0,0,0,0]
[null,{"$f":"C896","v":"Zone Transformers"},null,"Initial Asset Base",null,null,10.177287986051931,10.15989364462291,10.143369020265343,10.127670627125651,10.112757153642946,10.098589353834377,10.085129944016234,10.072343504688998,10.060196387328128,10.048656625835296,10.03769385241711,10.027279217669831,10.017385314659915,10.007986106800498,9.9990568593340505,9.9905740742409233,7.6116596199427597,0.14545855738437091,0.13818562951515237,0.13127634803939475,0.12471253063742499,0.11847690410555378,0.11255305890027609,0.10692540595526227,0.10157913565749917,9.6500178874624198E-2,9.1675169930892975E-2,8.7091411434348329E-2,8.2736840862630931E-2,7.8599998819499403E-2,7.4669998878524421E-2,7.0936498934598191E-2,6.738967398786827E-2,6.4020190288474846E-2,6.0819180774051136E-2,5.7778221735348592E-2,5.4889310648581158E-2,5.2144845116152097E-2,4.9537602860344504E-2,4.7060722717327266E-2,4.4707686581460883E-2,4.2472302252387822E-2,4.0348687139768427E-2,3.8331252782779997E-2,3.6414690143640981E-2,5.4328148863140503E-2,0.41031617398671111,0.1360583470772925,4.5025057070280282E-2,4.6151385731754146E-2,0,0,0,0,0]
[null,null,null,"Capex in year",0]
[null,null,null,null,1,null,null,0.59810758617787341,0.56820220686897982,0.53979209652553084,0.51280249169925418,0.48716236711429151,0.4628042487585769,0.43966403632064804,0.41768083450461574,0.3967967927793849,0.37695695314041566,0.35810910548339492,0.34020365020922516,0.32319346769876389,0.30703379431382566,0.29168210459813437,0.27709799936822765,0.26324309939981627,0.25008094442982542,0.23757689720833416,0.22569805234791745,0.21441314973052158,0.20369249224399549,0.19350786763179575,0.18383247425020594,0.17464085053769562,0.16590880801081087,0.15761336761027034,0.14973269922975682,0.14224606426826897,0.1351337610548555,0.12837707300211271,0.12195821935200704,0.11586030838440664,0.11006729296518628,0.10456392831692692,9.9335731901080596E-2,9.4368945306026589E-2,8.9650498040725266E-2,8.5167973138688971E-2,8.0909574481754482E-2,7.6864095757666742E-2,7.3020890969783384E-2,6.9369846421294235E-2,6.5901354100229542E-2,6.2606286395218022E-2,5.9475972075457149E-2,5.6502173471684278E-2,5.3677064798100027E-2,5.0993211558195035E-2,4.8443550980285285E-2,0.92042746862541946,0,0,0]
[null,null,null,null,2,null,null,null,0.63635235713754001,0.60453473928066304,0.57430800231662993,0.54559260220079842,0.51831297209075844,0.49239732348622056,0.46777745731190945,0.44438858444631402,0.42216915522399834,0.40106069746279838,0.38100766258965846,0.36195727946017553,0.34385941548716681,0.32666644471280848,0.31033312247716804,0.29481646635330966,0.28007564303564414,0.26607186088386192,0.25276826783966883,0.24012985444768536,0.22812336172530112,0.2167171936390361,0.20588133395708427,0.19558726725923006,0.18580790389626858,0.17651750870145516,0.16769163326638242,0.15930705160306327,0.15134169902291011,0.14377461407176464,0.13658588336817643,0.12975658919976757,0.12326875973977923,0.11710532175279023,0.11125005566515071,0.10568755288189317,0.10040317523779853,9.5383016475908564E-2,9.0613865652113129E-2,8.608317236950748E-2,8.1779013751032109E-2,7.769006306348053E-2,7.3805559910306517E-2,7.0115281914791189E-2,6.6609517819051611E-2,6.327904192809905E-2,6.0115089831694057E-2,5.7109335340109368E-2,5.4253868573103867E-2,5.1541175144448656E-2,0.97928232774452439,0,0]
[null,null,null,null,3,null,null,null,null,0.67946069361097117,0.64548765893042259,0.61321327598390141,0.58255261218470644,0.55342498157547104,0.52575373249669743,0.49946604587186266,0.47449274357826948,0.45076810639935594,0.42822970107938818,0.40681821602541879,0.3864773052241478,0.36715343996294042,0.34879576796479339,0.33135597956655372,0.31478818058822605,0.29904877155881476,0.284096332980874,0.26989151633183028,0.25639694051523876,0.24357709348947681,0.23139823881500293,0.21982832687425274,0.20883691053054004,0.19839506500401308,0.18847531175381244,0.17905154616612182,0.17009896885781572,0.1615940204149249,0.15351431939417862,0.14583860342446972,0.13854667325324627,0.13161933959058392,0.12503837261105472,0.11878645398050199,0.11284713128147691,0.10720477471740308,0.10184453598153295,9.6752309182456323E-2,9.191469372333351E-2,8.7318959037166813E-2,8.2953011085308434E-2,7.8805360531043006E-2,7.4865092504490888E-2,7.1121837879266375E-2,6.7565745985303058E-2,6.4187458686037868E-2,6.0978085751736015E-2,5.7929181464149174E-2,5.5032722390941667E-2,1.0456217254278908,0]
[null,null,null,null,4,null,null,null,null,null,0.72005636199905731,0.68405354389910444,0.64985086670414915,0.6173583233689417,0.58649040720049461,0.55716588684046986,0.52930759249844639,0.50284221287352415,0.47770010222984788,0.45381509711835538,0.43112434226243768,0.40956812514931579,0.38908971889184996,0.36963523294725742,0.35115347129989455,0.33359579773489983,0.31691600784815488,0.30107020745574714,0.28601669708295974,0.27171586222881172,0.25813006911737113,0.24522356566150258,0.23296238737842745,0.2213142680095061,0.21024855460903083,0.19973612687857928,0.18974932053465035,0.18026185450791785,0.17124876178252191,0.16268632369339583,0.154552007508726,0.14682440713328967,0.13948318677662519,0.13250902743779397,0.12588357606590431,0.11958939726260909,0.11360992739947859,0.10792943102950467,0.10253295947802947,9.7406311504127999E-2,9.2535995928921561E-2,8.7909196132475498E-2,8.3513736325851726E-2,7.9338049509559139E-2,7.5371147034081182E-2,7.1602589682377107E-2,6.8022460198258208E-2,6.4621337188345257E-2,6.1390270328927979E-2,5.8320756812481556E-2,1.1080943794371496]
[null,null,null,null,5,null,null,null,null,null,null,0.77235797525237548,0.7337400764897567,0.69705307266526884,0.66220041903200544,0.62909039808040523,0.59763587817638486,0.56775408426756557,0.53936638005418736,0.512398061051478,0.48677815799890406,0.46243925009895887,0.4393172875940109,0.41735142321431035,0.39648385205359482,0.37665965945091512,0.3578266764783693,0.33993534265445086,0.32293857552172828,0.30679164674564185,0.29145206440835975,0.27687946118794177,0.26303548812854466,0.24988371372211746,0.2373895280360116,0.22552005163421102,0.21424404905250047,0.20353184659987547,0.19335525426988168,0.18368749155638756,0.17450311697856818,0.16577796112963974,0.15748906307315774,0.14961460991949987,0.1421338794235249,0.13502718545234862,0.12827582617973116,0.12186203487074458,0.11576893312720735,0.10998048647084702,0.10448146214730462,9.9257389039939373E-2,9.4294519587942396E-2,8.9579793608545288E-2,8.5100803928118043E-2,8.0845763731712164E-2,7.6803475545126537E-2,7.2963301767870192E-2,6.9315136679476655E-2,6.5849379845502848E-2,6.2556910853227704E-2]
[null,null,null,null,6,null,null,null,null,null,null,null,0,0,0,0,0,0,0,0,0,0,0,0,0,0,0,0,0,0,0,0,0,0,0,0,0,0,0,0,0,0,0,0,0,0,0,0,0,0,0,0,0,0,0,0,0,0,0,0,0]
[null,null,null,null,7,null,null,null,null,null,null,null,null,0,0,0,0,0,0,0,0,0,0,0,0,0,0,0,0,0,0,0,0,0,0,0,0,0,0,0,0,0,0,0,0,0,0,0,0,0,0,0,0,0,0,0,0,0,0,0,0]
[null,null,null,null,8,null,null,null,null,null,null,null,null,null,0,0,0,0,0,0,0,0,0,0,0,0,0,0,0,0,0,0,0,0,0,0,0,0,0,0,0,0,0,0,0,0,0,0,0,0,0,0,0,0,0,0,0,0,0,0,0]
[null,null,null,null,9,null,null,null,null,null,null,null,null,null,null,0,0,0,0,0,0,0,0,0,0,0,0,0,0,0,0,0,0,0,0,0,0,0,0,0,0,0,0,0,0,0,0,0,0,0,0,0,0,0,0,0,0,0,0,0,0]
[null,null,null,null,10,null,null,null,null,null,null,null,null,null,null,null,0,0,0,0,0,0,0,0,0,0,0,0,0,0,0,0,0,0,0,0,0,0,0,0,0,0,0,0,0,0,0,0,0,0,0,0,0,0,0,0,0,0,0,0,0]
[null,null,{"$f":"Asset9","v":"Zone Transformers"},null,null,null,14.494435948714129,15.197140896037958,15.986026445476753,16.766189531964525,17.650590638465427,13.200969118284847,13.03239072024418,12.872241242105549,12.720099237873852,12.575564333853732,12.438256175034626,12.307813424156469,12.183892810822222,12.066168228154689,11.954329874620532,11.84808343876308,9.3762935162388104,1.8218607588656182,1.7307677209223371,1.6442293348762205,1.5620178681324095,1.4839169747257892,1.4097211259894995,1.3392350696900248,1.2722733162055233,1.2086596503952471,1.1482266678754844,1.0908153344817104,1.0362745677576251,0.98446083936974382,0.93523779740125657,0.88847590753119376,0.84405211215463394,0.80184950654690212,0.76175703121955718,0.72366917965857902,0.68748572067565017,0.65311143464186761,0.62045586290977428,0.58943306976428556,0.5599614162760711,0.53196334546226753,0.50536517818915427,0.48009691927969655,0.45609207331571172,0.45302166287660756,0.78907501229950494,0.49587924347444667,0.38685490864757666,0.37088974473018566,0.30850144104850996,1.1674824641902328,1.1650204571438707,1.1697918620858752,1.1706512902903774]
[null,{"$f":"C909","v":"Distribution Transformers"},null,"Initial Asset Base",null,null,49.8622011467261,49.312579972647811,48.790439857273427,48.294406747667765,47.823175293542391,47.375505412123289,46.950219024775137,46.546196956794397,46.162375992212695,45.797746075860069,45.451347655325073,45.122269155816831,44.809644581284012,44.512651235477819,44.230507556961946,43.962471062371854,43.707836392511282,43.465933456143723,43.236125666594553,43.017808266522835,27.796614415889859,3.7435976177297285,3.556417736843243,3.378596850001081,3.2096670075010265,3.0491836571259761,2.8967244742696767,2.7518882505561932,2.6142938380283836,2.4835791461269636,2.3594001888206164,2.2414301793795848,2.129358670410606,2.0228907368900755,1.9217462000455716,1.8256588900432933,1.7343759455411278,1.6476571482640718,1.5652742908508681,1.4870105763083246,8.8771514900911086,9.6793344957707905,9.1189709724908408,0.2853034774127346,0.29244051409269955,0,0,0,0,0,0,0,0,0,0]
[null,null,null,"Capex in year",0]
[null,null,null,null,1,null,null,3.8459520219423569,3.6536544208452391,3.4709716998029769,3.2974231148128283,3.1325519590721869,2.9759243611185777,2.8271281430626485,2.6857717359095163,2.5514831491140404,2.4239089916583385,2.3027135420754212,2.1875778649716504,2.0781989717230678,1.9742890231369143,1.8755745719800687,1.7817958433810652,1.6927060512120122,1.6080707486514116,1.5276672112188407,1.4512838506578989,1.3787196581250036,1.3097836752187533,1.2442944914578158,1.182079766884925,1.1229757785406786,1.0668269896136449,1.0134856401329626,0.96281135812631435,0.91467079021999853,0.86893725070899852,0.82549038817354869,0.78421586876487126,0.74500507532662752,0.70775482156029601,0.67236708048228133,0.63874872645816727,0.60681129013525925,0.57647072562849644,0.54764718934707168,0.52026482987971789,0.49425158838573185,0.46953900896644502,0.44606205851812253,0.42375895559221632,0.40257100781260535,7.6488491484394956,0,0,0,0,0,0,0,0]
[null,null,null,null,2,null,null,null,4.0834838175625698,3.8793096266844418,3.6853441453502196,3.5010769380827087,3.3260230911785729,3.1597219366196443,3.0017358397886618,2.8516490477992291,2.7090665954092676,2.5736132656388042,2.444932602356864,2.3226859722390207,2.2065516736270694,2.0962240899457161,1.9914128854484305,1.8918422411760087,1.7972501291172085,1.707387622661348,1.6220182415282804,1.5409173294518663,1.4638714629792731,1.3906778898303096,1.3211439953387942,1.2550867955718545,1.1923324557932617,1.1327158330035985,1.0760800413534184,1.0222760392857475,0.9711622373214599,0.92260412545538706,0.87647391918261741,0.83265022322348659,0.79101771206231253,0.75146682645919682,0.71389348513623718,0.67819881087942524,0.64428887033545412,0.61207442681868118,0.58147070547774715,0.55239717020386014,0.52477731169366704,0.49853844610898368,0.47361152380353461,0.44993094761335756,0.42743440023268992,8.1212536044211134,0,0,0,0,0,0,0]
[null,null,null,null,3,null,null,null,null,4.3636991043535716,4.1455141491358933,3.9382384416790988,3.7413265195951433,3.5542601936153861,3.3765471839346173,3.207719824737886,3.0473338335009919,2.8949671418259424,2.7502187847346451,2.6127078454979129,2.482072453223017,2.357968830561866,2.240070389033773,2.1280668695820841,2.0216635261029796,1.9205803497978309,1.8245513323079394,1.7333237656925424,1.6466575774079155,1.5643246985375197,1.4861084636106439,1.4118030404301116,1.3412128884086059,1.2741522439881756,1.2104446317887669,1.1499224001993285,1.0924262801893618,1.037804966179894,0.98591471787089946,0.9366189819773546,0.88978803287848651,0.84529863123456228,0.80303369967283444,0.76288201468919259,0.72473791395473275,0.68850101825699639,0.65407596734414641,0.62137216897693937,0.59030356052809274,0.56078838250168772,0.53274896337660349,0.50611151520777331,0.48080593944738442,0.4567656424750155,8.6785472070252894,0,0,0,0,0,0]
[null,null,null,null,4,null,null,null,null,null,4.6363855913566505,4.4045663117888179,4.1843379961993774,3.9751210963894081,3.7763650415699375,3.5875467894914408,3.4081694500168691,3.2377609775160252,3.0758729286402242,2.9220792822082129,2.7759753180978022,2.637176552192912,2.5053177245832665,2.3800518383541034,2.2610492464363978,2.1479967841145782,2.0405969449088492,1.9385670976634068,1.8416387427802363,1.7495568056412247,1.6620789653591634,1.5789750170912051,1.500026266236645,1.4250249529248131,1.3537737052785723,1.2860850200146439,1.221780769013912,1.1606917305632158,1.1026571440350552,1.0475242868333028,0.99514807249163728,0.94539066886705569,0.89812113542370264,0.85321507865251722,0.81055432471989164,0.77002660848389726,0.73152527805970213,0.69494901415671684,0.66020156344888081,0.62719148527643687,0.59583191101261479,0.5660403154619843,0.53773829968888476,0.51085138470444069,0.48530881546921878,9.2208674939151507,0,0,0,0,0]
[null,null,null,null,5,null,null,null,null,null,null,4.9798451840185622,4.7308529248176345,4.4943102785767524,4.2695947646479153,4.0561150264155188,3.8533092750947433,3.6606438113400062,3.4776116207730059,3.3037310397343549,3.1385444877476374,2.9816172633602558,2.8325364001922431,2.6909095801826304,2.5563641011734988,2.4285458961148239,2.3071186013090825,2.191762671243628,2.0821745376814467,1.9780658107973743,1.8791625202575055,1.7852043942446301,1.6959441745323987,1.6111469658057787,1.5305896175154901,1.4540601366397157,1.3813571298077301,1.3122892733173437,1.2466748096514764,1.1843410691689022,1.1251240157104569,1.0688678149249342,1.0154244241786878,0.96465320296975321,0.91642054282126539,0.87059951568020189,0.82706953989619203,0.78571606290138263,0.74643025975631339,0.70910874676849789,0.67365330943007329,0.63997064395856929,0.60797211176064114,0.57757350617260883,0.54869483086397819,0.52126008932077927,9.9039416970948082,0,0,0,0]
[null,null,null,null,6,null,null,null,null,null,null,null,0,0,0,0,0,0,0,0,0,0,0,0,0,0,0,0,0,0,0,0,0,0,0,0,0,0,0,0,0,0,0,0,0,0,0,0,0,0,0,0,0,0,0,0,0,0,0,0,0]
[null,null,null,null,7,null,null,null,null,null,null,null,null,0,0,0,0,0,0,0,0,0,0,0,0,0,0,0,0,0,0,0,0,0,0,0,0,0,0,0,0,0,0,0,0,0,0,0,0,0,0,0,0,0,0,0,0,0,0,0,0]
[null,null,null,null,8,null,null,null,null,null,null,null,null,null,0,0,0,0,0,0,0,0,0,0,0,0,0,0,0,0,0,0,0,0,0,0,0,0,0,0,0,0,0,0,0,0,0,0,0,0,0,0,0,0,0,0,0,0,0,0,0]
[null,null,null,null,9,null,null,null,null,null,null,null,null,null,null,0,0,0,0,0,0,0,0,0,0,0,0,0,0,0,0,0,0,0,0,0,0,0,0,0,0,0,0,0,0,0,0,0,0,0,0,0,0,0,0,0,0,0,0,0,0]
[null,null,null,null,10,null,null,null,null,null,null,null,null,null,null,null,0,0,0,0,0,0,0,0,0,0,0,0,0,0,0,0,0,0,0,0,0,0,0,0,0,0,0,0,0,0,0,0,0,0,0,0,0,0,0,0,0,0,0,0,0]
[null,null,{"$f":"Asset10","v":"Distribution Transformers"},null,null,null,77.48174802672159,81.560522374226963,86.203640177516235,90.815579344303885,96.125271680871208,67.33178424676467,65.908683917684442,64.556738605058243,63.27239055806335,62.052259913418183,60.893135801005286,59.791967894213037,58.745858382760396,57.752054346880392,56.807940512794382,55.91103237041267,55.058969635150063,54.249510036650562,53.480523418076054,52.749986130430258,37.042183386601913,12.526888139906175,11.900543732910867,11.305516546265325,10.740240718952059,10.203228683004456,9.6930672488542324,9.2084138864115221,8.7479931920909451,8.3105935324863971,7.8950638558620794,7.5003106630689746,7.1252951299155258,6.7690303734197492,6.4305788547487612,6.109049912011324,5.8035974164107573,5.5134175455902188,5.2377466683107086,4.9758593348951727,12.191557810748614,12.828020500395422,12.110222676884238,3.1269925965864629,2.9920451773077419,2.5646244300542902,9.7027998995690954,9.6664441377731798,9.7125508533584863,9.7421275832359306,9.9039416970948082,0,0,0,0]
[null,{"$f":"C922","v":"Low Voltage Services"},null,"Initial Asset Base",null,null,13.171199881728668,12.967339451447254,12.773672042679907,12.589688004350933,12.414903167938405,12.248857573346505,12.091114258484199,11.941258109365009,11.79889476770178,11.663649593121709,11.53516667727064,11.413107907212128,11.297152075656541,11.186994035678733,11.082343897699817,10.982926266619844,10.88847951709387,10.798755105044195,10.713516913597006,10.632540631722176,10.324819883864375,1.3885407934486671,1.3191137537762336,1.2531580660874222,1.1905001627830507,1.1309751546438984,1.0744263969117036,1.0207050770661181,0.96966982321281225,0.9211863320521716,5.8573263297522891,4.4563210495233436,7.1690602130676995,9.7938587149150533E-3,1.0038857933012971E-2,0,0,0,0,0,0,0,0,0,0,0,0,0,0,0,0,0,0,0,0]
[null,null,null,"Capex in year",0]
[null,null,null,null,1,null,null,1.3681600071816284,1.299752006822547,1.2347644064814196,1.1730261861573488,1.1143748768494814,1.0586561330070072,1.0057233263566567,0.95543716003882406,0.90766530203688278,0.86228203693503858,0.81916793508828667,0.77820953833387241,0.73929906141717883,0.70233410834631982,0.66721740292900389,0.63385653278255372,0.60216370614342596,0.57205552083625466,0.54345274479444206,0.51628010755471987,0.49046610217698383,0.46594279706813463,0.44264565721472793,0.42051337435399144,0.39948770563629188,0.37951332035447721,0.36053765433675339,0.34251077161991578,0.32538523303891992,0.309115971386974,0.2936601728176253,0.27897716417674412,0.26502830596790689,0.25177689066951159,0.23918804613603603,4.5445728765846845,0,0,0,0,0,0,0,0,0,0,0,0,0,0,0,0,0,0]
[null,null,null,null,2,null,null,null,1.4436306167749091,1.3714490859361637,1.3028766316393554,1.2377328000573877,1.1758461600545185,1.1170538520517925,1.0612011594492028,1.0081411014767425,0.95773404640290571,0.90984734408276047,0.86435497687862228,0.82113722803469114,0.78008036663295666,0.74107634830130875,0.70402253088624334,0.66882140434193116,0.63538033412483463,0.60361131741859286,0.57343075154766321,0.54475921397028004,0.51752125327176601,0.49164519060817774,0.46706293107776881,0.44370978452388032,0.42152429529768637,0.40044808053280206,0.38042567650616199,0.36140439268085384,0.34333417304681113,0.32616746439447053,0.30985909117474703,0.29436613661600969,0.27964782978520919,0.2656654382959488,0.25238216638115141,4.795261161241875,0,0,0,0,0,0,0,0,0,0,0,0,0,0,0,0,0]
[null,null,null,null,3,null,null,null,null,1.5465646004110114,1.469236370390461,1.3957745518709377,1.3259858242773908,1.2596865330635214,1.1967022064103452,1.1368670960898279,1.0800237412853366,1.0260225542210699,0.97472142651001625,0.92598535518451541,0.87968608742528964,0.83570178305402509,0.79391669390132391,0.75422085920625781,0.7165098162459449,0.68068432543364765,0.64665010916196519,0.61431760370386701,0.58360172351867357,0.55442163734273997,0.52670055547560291,0.50036552770182274,0.47534725131673156,0.45157988875089505,0.42900089431335026,0.40755084959768273,0.38717330711779852,0.36781464176190859,0.34942390967381309,0.3319527141901224,0.31535507848061628,0.29958732455658538,0.28460795832875602,0.2703775604123182,5.1371736478340466,0,0,0,0,0,0,0,0,0,0,0,0,0,0,0,0]
[null,null,null,null,4,null,null,null,null,null,1.6561058566960196,1.5733005638612187,1.4946355356681575,1.4199037588847498,1.3489085709405124,1.2814631423934868,1.2173899852738124,1.1565204860101217,1.0986944617096157,1.0437597386241346,0.99157175169292811,0.9419931641082816,0.89489350590286765,0.85014883060772428,0.80764138907733796,0.76725931962347094,0.72889635364229743,0.69245153596018261,0.65782895916217354,0.62493751120406482,0.5936906356438616,0.56400610386166861,0.53580579866858524,0.509015508735156,0.48356473329839816,0.4593864966334783,0.43641717180180439,0.41459631321171425,0.39386649755112857,0.37417317267357203,0.35546451403989343,0.33769128833789869,0.32080672392100384,0.30476638772495374,0.28952806833870603,5.5010332984354164,0,0,0,0,0,0,0,0,0,0,0,0,0,0,0]
[null,null,null,null,5,null,null,null,null,null,null,1.7859827295796997,1.6966835931007147,1.6118494134456789,1.5312569427733953,1.4546940956347254,1.381959390852989,1.3128614213103396,1.2472183502448226,1.1848574327325814,1.1256145610959523,1.0693338330411546,1.015867141389097,0.96507378431964208,0.91682009510366003,0.87097909034847698,0.82743013583105318,0.78605862903950041,0.74675569758752536,0.70941791270814913,0.67394701707274174,0.64024966621910462,0.60823718290814943,0.57782532376274198,0.54893405757460489,0.52148735469587459,0.49541298696108083,0.47064233761302676,0.4471102207323755,0.42475470969575668,0.40351697421096877,0.38334112550042027,0.36417406922539935,0.3459653657641294,0.32866709747592293,0.31223374260212683,5.9324411094404077,0,0,0,0,0,0,0,0,0,0,0,0,0,0]
[null,null,null,null,6,null,null,null,null,null,null,null,0,0,0,0,0,0,0,0,0,0,0,0,0,0,0,0,0,0,0,0,0,0,0,0,0,0,0,0,0,0,0,0,0,0,0,0,0,0,0,0,0,0,0,0,0,0,0,0,0]
[null,null,null,null,7,null,null,null,null,null,null,null,null,0,0,0,0,0,0,0,0,0,0,0,0,0,0,0,0,0,0,0,0,0,0,0,0,0,0,0,0,0,0,0,0,0,0,0,0,0,0,0,0,0,0,0,0,0,0,0,0]
[null,null,null,null,8,null,null,null,null,null,null,null,null,null,0,0,0,0,0,0,0,0,0,0,0,0,0,0,0,0,0,0,0,0,0,0,0,0,0,0,0,0,0,0,0,0,0,0,0,0,0,0,0,0,0,0,0,0,0,0,0]
[null,null,null,null,9,null,null,null,null,null,null,null,null,null,null,0,0,0,0,0,0,0,0,0,0,0,0,0,0,0,0,0,0,0,0,0,0,0,0,0,0,0,0,0,0,0,0,0,0,0,0,0,0,0,0,0,0,0,0,0,0]
[null,null,null,null,10,null,null,null,null,null,null,null,null,null,null,null,0,0,0,0,0,0,0,0,0,0,0,0,0,0,0,0,0,0,0,0,0,0,0,0,0,0,0,0,0,0,0,0,0,0,0,0,0,0,0,0,0,0,0,0,0]
[null,null,{"$f":"Asset11","v":"Low Voltage Services"},null,null,null,22.845291035885545,24.285798153390878,25.914886373600645,27.537707023935923,29.417438877548594,19.356023095565231,18.842921504591988,18.355474993167409,17.892400807314061,17.452480330753374,17.034555878020718,16.637527647924706,16.26035082933349,15.902032851671834,15.561630772893263,15.238248798053617,14.931035921955957,14.639183689663177,14.361924068985038,14.098527429340805,13.617507341602076,4.5165938782994814,4.290764184384507,4.0762259751652818,3.8724146764070175,3.6787939425866663,3.4948542454573333,3.3201115331844662,3.1541059565252434,2.9964006586989811,7.8287799400667577,6.3292019793220886,8.9482970963765069,1.7000688978582827,1.6158001451192121,1.525473222826889,5.7665437944409952,5.7163704751432762,5.7553688136486754,5.8132670410375429,5.9324411094404077,0,0,0,0,0,0,0,0,0,0,0,0,0,0]
[null,{"$f":"C935","v":"Metering"},null,"Initial Asset Base",null,null,3.4703980713794116,3.4540660277752027,3.4390405476593298,3.4252171059527274,3.4124995395826527,3.4007993785221839,3.3900352303465531,3.3801322140249721,3.3710214390091187,3.362639525994533,3.3549281660211134,3.3478337148455681,0.23115163571872477,6.9054549962289116E-2,6.3530185965305991E-2,5.8447771088081517E-2,5.3771949401035017E-2,4.9470193448952225E-2,4.5512577973036025E-2,4.1871571735193167E-2,0.45200833619722058,3.4666582205571256E-3,-1.6373032488515741E-2,2.1315240102879645E-2,2.1105872922579677E-2,0,0,0,0,0,0,0,0,0,0,0,0,0,0,0,0,0,0,0,0,0,0,0,0,0,0,0,0,0,0]
[null,null,null,"Capex in year",0]
[null,null,null,null,1,null,null,0.14619722215545464,0.13450144438301828,0.1237413288323768,0.11384202252578667,0.10473466072372371,9.6355887865825829E-2,8.8647416836559745E-2,8.1555623489634979E-2,7.5031173610464186E-2,6.9028679721627045E-2,6.3506385343896882E-2,5.8425874516385132E-2,5.3751804555074334E-2,4.9451660190668378E-2,4.5495527375414915E-2,4.1855885185381719E-2,3.8507414370551184E-2,3.5426821220907082E-2,3.259267552323452E-2,2.9985261481375768E-2,2.7586440562865706E-2,2.5379525317836455E-2,2.3349163292409544E-2,2.1481230229016789E-2,1.9762731810695443E-2,0.22727141582299759,0,0,0,0,0,0,0,0,0,0,0,0,0,0,0,0,0,0,0,0,0,0,0,0,0,0,0,0]
[null,null,null,null,2,null,null,null,0.15668978087289129,0.14415459840305997,0.13262223053081518,0.12201245208834997,0.11225145592128197,0.10327133944757941,9.5009632291773061E-2,8.7408861708431221E-2,8.0416152771756733E-2,7.3982860550016183E-2,6.8064231706014888E-2,6.2619093169533693E-2,5.7609565715971006E-2,5.3000800458693327E-2,4.8760736421997866E-2,4.4859877508238027E-2,4.1271087307578988E-2,3.7969400322972663E-2,3.4931848297134853E-2,3.2137300433364067E-2,2.956631639869494E-2,2.7201011086799343E-2,2.5024930199855397E-2,2.3022935783866973E-2,2.118110092115762E-2,0.24358266059331268,0,0,0,0,0,0,0,0,0,0,0,0,0,0,0,0,0,0,0,0,0,0,0,0,0,0,0]
[null,null,null,null,3,null,null,null,null,0.16681498210555579,0.15346978353711133,0.14119220085414241,0.12989682478581102,0.11950507880294613,0.10994467249871043,0.10114909869881361,9.3057170802908512E-2,8.5612597138675833E-2,7.8763589367581766E-2,7.2462502218175226E-2,6.6665502040721206E-2,6.1332261877463504E-2,5.6425680927266429E-2,5.1911626453085113E-2,4.775869633683829E-2,4.393800062989122E-2,4.0422960579499921E-2,3.7189123733139928E-2,3.421399383448874E-2,3.1476874327729637E-2,2.8958724381511269E-2,2.6642026430990368E-2,2.4510664316511138E-2,2.2549811171190245E-2,0.25932282846868793,0,0,0,0,0,0,0,0,0,0,0,0,0,0,0,0,0,0,0,0,0,0,0,0,0,0]
[null,null,null,null,4,null,null,null,null,null,0.17514921519263754,0.16113727797722655,0.14824629573904843,0.13638659207992454,0.12547566471353058,0.11543761153644815,0.10620260261353229,9.7706394404449712E-2,8.9889882852093733E-2,8.2698692223926229E-2,7.6082796846012143E-2,6.9996173098331185E-2,6.4396479250464683E-2,5.9244760910427505E-2,5.4505180037593311E-2,5.014476563458585E-2,4.6133184383818977E-2,4.244252963311345E-2,3.9047127262464371E-2,3.5923357081467218E-2,3.3049488514949842E-2,3.0405529433753849E-2,2.7973087079053549E-2,2.5735240112729266E-2,2.3676420903710919E-2,0.27227884039267547,0,0,0,0,0,0,0,0,0,0,0,0,0,0,0,0,0,0,0,0,0,0,0,0,0]
[null,null,null,null,5,null,null,null,null,null,null,0.18695831109430089,0.17200164620675681,0.15824151451021629,0.14558219334939895,0.13393561788144706,0.12322076845093129,0.1133631069748568,0.10429405841686824,9.5950533743518779E-2,8.8274491044037284E-2,8.1212531760514295E-2,7.4715529219673144E-2,6.8738286882099292E-2,6.3239223931531349E-2,5.8180086017008838E-2,5.3525679135648138E-2,4.9243624804796278E-2,4.5304134820412581E-2,4.1679804034779569E-2,3.8345419711997196E-2,3.5277786135037417E-2,3.2455563244234417E-2,2.9859118184695659E-2,2.7470388729920005E-2,2.5272757631526411E-2,0.29063671276255354,0,0,0,0,0,0,0,0,0,0,0,0,0,0,0,0,0,0,0,0,0,0,0,0]
[null,null,null,null,6,null,null,null,null,null,null,null,0,0,0,0,0,0,0,0,0,0,0,0,0,0,0,0,0,0,0,0,0,0,0,0,0,0,0,0,0,0,0,0,0,0,0,0,0,0,0,0,0,0,0,0,0,0,0,0,0]
[null,null,null,null,7,null,null,null,null,null,null,null,null,0,0,0,0,0,0,0,0,0,0,0,0,0,0,0,0,0,0,0,0,0,0,0,0,0,0,0,0,0,0,0,0,0,0,0,0,0,0,0,0,0,0,0,0,0,0,0,0]
[null,null,null,null,8,null,null,null,null,null,null,null,null,null,0,0,0,0,0,0,0,0,0,0,0,0,0,0,0,0,0,0,0,0,0,0,0,0,0,0,0,0,0,0,0,0,0,0,0,0,0,0,0,0,0,0,0,0,0,0,0]
[null,null,null,null,9,null,null,null,null,null,null,null,null,null,null,0,0,0,0,0,0,0,0,0,0,0,0,0,0,0,0,0,0,0,0,0,0,0,0,0,0,0,0,0,0,0,0,0,0,0,0,0,0,0,0,0,0,0,0,0,0]
[null,null,null,null,10,null,null,null,null,null,null,null,null,null,null,null,0,0,0,0,0,0,0,0,0,0,0,0,0,0,0,0,0,0,0,0,0,0,0,0,0,0,0,0,0,0,0,0,0,0,0,0,0,0,0,0,0,0,0,0,0]
[null,null,{"$f":"Asset12","v":"Metering"},null,null,null,4.1419151368952054,4.2905864987642852,4.4514026816771866,4.6084769722703491,4.7781979243582811,4.1168342812599281,4.0487873408652773,3.9861841557021984,3.9285892253521664,3.8756018894301372,3.8268535403818689,3.7820050592574632,0.6305892725776685,0.43653717587251739,0.40161420180271601,0.3694850656584987,0.33992626040581886,0.31273215957335332,0.28771358680748504,0.26469649986288629,0.65700727007469817,0.19206567738783656,0.15713806514538137,0.18094544992606493,0.16796566595991017,0.13511100959434405,0.33339183138395434,0.32172683006192787,0.31046963810231887,0.29755159802420189,0.29063671276255354,0,0,0,0,0,0,0,0,0,0,0,0,0,0,0,0,0,0,0,0,0,0,0,0]
[null,{"$f":"C948","v":"Communications – Pilot Wires"},null,"Initial Asset Base",null,null,2.5917937563652491,2.073435005092199,1.6587480040737594,1.3269984032590074,1.0615987226072059,0.84927897808576447,0.67942318246861166,0.54353854597488938,0.43483083677991147,0.34786466942392902,0.27829173553914338,0.22263338843131472,0.17810671074505183,0.14248536859604161,0.11398829487683321,9.119063590146656E-2,7.2952508721172996E-2,5.8362006976938323E-2,4.6689605581550761E-2,3.7351684465240571E-2,2.9881347572192598E-2,2.3905078057754218E-2,1.9124062446203259E-2,1.5299249956962857E-2,1.2239399965570365E-2,9.7915199724560743E-3,7.8332159779646807E-3,6.2665727823715388E-3,5.013258225897022E-3,4.0106065807176908E-3,7.4126909515955354E-3,6.2241120517744775E-3,2.1535703436775799E-3,1.3605793252526865E-4,1.1599504329773414E-4,0,0,0,0,0,0,0,0,0,0,0,0,0,0,0,0,0,0,0,0]
[null,null,null,"Capex in year",0]
[null,null,null,null,1,null,null,2.0478968071351544,1.6383174457081235,1.310653956566499,1.0485231652531992,0.83881853220255942,0.67105482576204756,0.53684386060963796,0.42947508848771038,0.34358007079016845,0.27486405663213492,0.219891245305708,0.17591299624456624,0.14073039699565301,0.11258431759652227,9.0067454077217945E-2,7.2053963261774365E-2,5.7643170609419418E-2,4.6114536487535676E-2,3.6891629190028398E-2,2.9513303352022648E-2,2.361064268161819E-2,1.8888514145294622E-2,1.511081131623584E-2,1.2088649052988744E-2,9.6709192423908522E-3,7.7367353939127529E-3,6.1893883151302731E-3,4.9515106521042188E-3,3.9612085216834464E-3,3.1689668173466856E-3,2.5351734538773488E-3,2.0281387631019498E-3,1.6225110104816311E-3,1.2980088083853758E-3,1.0384070467083007E-3,4.1536281868328473E-3,0,0,0,0,0,0,0,0,0,0,0,0,0,0,0,0,0,0]
[null,null,null,null,2,null,null,null,2.1705112043469383,1.7364089634775504,1.3891271707820403,1.1113017366256324,0.8890413893005058,0.71123311144040469,0.56898648915232364,0.45518919132185903,0.3641513530574873,0.29132108244598992,0.23305686595679198,0.1864454927654336,0.14915639421234703,0.11932511536987747,9.5460092295902049E-2,7.6368073836721714E-2,6.1094459069377299E-2,4.8875567255501906E-2,3.9100453804401525E-2,3.128036304352122E-2,2.5024290434816979E-2,2.0019432347853441E-2,1.6015545878282824E-2,1.2812436702626329E-2,1.0249949362101064E-2,8.1999594896807089E-3,6.5599675917447087E-3,5.2479740733957676E-3,4.1983792587167558E-3,3.3587034069732626E-3,2.6869627255784682E-3,2.1495701804628456E-3,1.7196561443704184E-3,1.3757249154963348E-3,1.1005799323971388E-3,4.4023197295892658E-3,0,0,0,0,0,0,0,0,0,0,0,0,0,0,0,0,0]
[null,null,null,null,3,null,null,null,null,2.321112460232047,1.8568899681856372,1.4855119745485099,1.1884095796388079,0.95072766371104622,0.76058213096883698,0.60846570477506967,0.48677256382005574,0.3894180510560446,0.31153444084483584,0.2492275526758686,0.1993820421406948,0.15950563371255591,0.1276045069700448,0.10208360557603591,8.1666884460828731E-2,6.533350756866306E-2,5.2266806054930372E-2,4.1813444843944225E-2,3.3450755875155384E-2,2.6760604700124448E-2,2.1408483760099628E-2,1.7126787008079705E-2,1.3701429606463833E-2,1.0961143685171138E-2,8.7689149481370524E-3,7.0151319585097134E-3,5.6121055668079123E-3,4.4896844534463298E-3,3.5917475627570642E-3,2.8733980502057225E-3,2.298718440164649E-3,1.8389747521318613E-3,1.4711798017053468E-3,1.1769438413644197E-3,4.7077753654569676E-3,0,0,0,0,0,0,0,0,0,0,0,0,0,0,0,0]
[null,null,null,null,4,null,null,null,null,null,2.4716814427237903,1.9773451541790323,1.5818761233432259,1.2655008986745808,1.0124007189396647,0.80992057515173177,0.64793646012138528,0.51834916809710807,0.4146793344776864,0.33174346758214918,0.26539477406571949,0.21231581925257573,0.16985265540206065,0.13588212432164859,0.10870569945731888,8.6964559565855026E-2,6.9571647652684018E-2,5.5657318122147359E-2,4.4525854497717891E-2,3.5620683598174455E-2,2.8496546878539419E-2,2.2797237502831538E-2,1.8237790002265088E-2,1.4590232001811998E-2,1.1672185601449669E-2,9.3377484811597352E-3,7.4701987849277174E-3,5.9761590279421746E-3,4.7809272223538818E-3,3.824741777883034E-3,3.0597934223063564E-3,2.4478347378451559E-3,1.958267790276125E-3,1.5666142322210419E-3,1.2532913857768336E-3,5.0131655431080446E-3,0,0,0,0,0,0,0,0,0,0,0,0,0,0,0]
[null,null,null,null,5,null,null,null,null,null,null,2.657862446534379,2.1262899572275034,1.7010319657820028,1.360825572625602,1.0886604581004815,0.8709283664803853,0.69674269318430826,0.55739415454744656,0.44591532363795711,0.35673225891036575,0.28538580712829253,0.22830864570263396,0.18264691656210702,0.14611753324968577,0.11689402659974846,9.3515221279798777E-2,7.481217702383916E-2,5.9849741619071396E-2,4.7879793295257045E-2,3.8303834636205639E-2,3.0643067708964369E-2,2.4514454167171351E-2,1.9611563333737082E-2,1.5689250666989809E-2,1.2551400533591918E-2,1.0041120426873463E-2,8.0328963414988408E-3,6.4263170731990726E-3,5.1410536585592588E-3,4.1128429268475486E-3,3.2902743414780391E-3,2.6322194731825733E-3,2.1057755785459874E-3,1.6846204628368612E-3,1.3476963702693469E-3,5.3907854810777422E-3,0,0,0,0,0,0,0,0,0,0,0,0,0,0]
[null,null,null,null,6,null,null,null,null,null,null,null,0,0,0,0,0,0,0,0,0,0,0,0,0,0,0,0,0,0,0,0,0,0,0,0,0,0,0,0,0,0,0,0,0,0,0,0,0,0,0,0,0,0,0,0,0,0,0,0,0]
[null,null,null,null,7,null,null,null,null,null,null,null,null,0,0,0,0,0,0,0,0,0,0,0,0,0,0,0,0,0,0,0,0,0,0,0,0,0,0,0,0,0,0,0,0,0,0,0,0,0,0,0,0,0,0,0,0,0,0,0,0]
[null,null,null,null,8,null,null,null,null,null,null,null,null,null,0,0,0,0,0,0,0,0,0,0,0,0,0,0,0,0,0,0,0,0,0,0,0,0,0,0,0,0,0,0,0,0,0,0,0,0,0,0,0,0,0,0,0,0,0,0,0]
[null,null,null,null,9,null,null,null,null,null,null,null,null,null,null,0,0,0,0,0,0,0,0,0,0,0,0,0,0,0,0,0,0,0,0,0,0,0,0,0,0,0,0,0,0,0,0,0,0,0,0,0,0,0,0,0,0,0,0,0,0]
[null,null,null,null,10,null,null,null,null,null,null,null,null,null,null,null,0,0,0,0,0,0,0,0,0,0,0,0,0,0,0,0,0,0,0,0,0,0,0,0,0,0,0,0,0,0,0,0,0,0,0,0,0,0,0,0,0,0,0,0,0]
[null,null,{"$f":"Asset13","v":"Communications – Pilot Wires"},null,null,null,6.2523171006876392,7.8857852258428078,9.40102397200803,10.778664339315242,12.140627272630308,8.920118822175878,7.1360950577407021,5.7088760461925609,4.5671008369540491,3.6536806695632396,2.9229445356505921,2.3383556285204734,1.8706845028163788,1.496547602253103,1.1972380818024826,0.95779046544198609,0.76623237235358888,0.61298589788287106,0.49038871830629716,0.39231097464503739,0.31384877971602992,0.25107902377282437,0.20086321901825954,0.16069057521460808,0.12855246017168662,0.10284196813734887,8.2273574509878766E-2,6.5818859607902735E-2,5.2655087686322474E-2,4.2124070149058272E-2,3.7903461806268066E-2,3.0616728735512435E-2,2.1667663690668016E-2,1.5747332610117761E-2,1.2605014785372083E-2,9.9912157936596913E-3,1.1315875184394031E-2,9.2516533817207144E-3,7.6456872140706622E-3,6.3608619133773917E-3,5.3907854810777422E-3,0,0,0,0,0,0,0,0,0,0,0,0,0,0]
[null,{"$f":"C961","v":"Land & Easements (System) - combined"},null,"Initial Asset Base",null,null,0,0,0,0,0,0,0,0,0,0,0,0,0,0,0,0,0,0,0,0,0,0,0,0,0,0,0,0,0,0,0,0,0,0,0,0,0,0,0,0,0,0,0,0,0,0,0,0,0,0,0,0,0,0,0]
[null,null,null,"Capex in year",0]
[null,null,null,null,1,null,null,"n/a","n/a","n/a","n/a","n/a","n/a","n/a","n/a","n/a","n/a","n/a","n/a","n/a","n/a","n/a","n/a","n/a","n/a","n/a","n/a","n/a","n/a","n/a","n/a","n/a","n/a","n/a","n/a","n/a","n/a","n/a","n/a","n/a","n/a","n/a","n/a","n/a","n/a","n/a","n/a","n/a","n/a","n/a","n/a","n/a","n/a","n/a","n/a","n/a","n/a","n/a","n/a","n/a","n/a"]
[null,null,null,null,2,null,null,null,"n/a","n/a","n/a","n/a","n/a","n/a","n/a","n/a","n/a","n/a","n/a","n/a","n/a","n/a","n/a","n/a","n/a","n/a","n/a","n/a","n/a","n/a","n/a","n/a","n/a","n/a","n/a","n/a","n/a","n/a","n/a","n/a","n/a","n/a","n/a","n/a","n/a","n/a","n/a","n/a","n/a","n/a","n/a","n/a","n/a","n/a","n/a","n/a","n/a","n/a","n/a","n/a","n/a"]
[null,null,null,null,3,null,null,null,null,"n/a","n/a","n/a","n/a","n/a","n/a","n/a","n/a","n/a","n/a","n/a","n/a","n/a","n/a","n/a","n/a","n/a","n/a","n/a","n/a","n/a","n/a","n/a","n/a","n/a","n/a","n/a","n/a","n/a","n/a","n/a","n/a","n/a","n/a","n/a","n/a","n/a","n/a","n/a","n/a","n/a","n/a","n/a","n/a","n/a","n/a","n/a","n/a","n/a","n/a","n/a","n/a"]
[null,null,null,null,4,null,null,null,null,null,"n/a","n/a","n/a","n/a","n/a","n/a","n/a","n/a","n/a","n/a","n/a","n/a","n/a","n/a","n/a","n/a","n/a","n/a","n/a","n/a","n/a","n/a","n/a","n/a","n/a","n/a","n/a","n/a","n/a","n/a","n/a","n/a","n/a","n/a","n/a","n/a","n/a","n/a","n/a","n/a","n/a","n/a","n/a","n/a","n/a","n/a","n/a","n/a","n/a","n/a","n/a"]
[null,null,null,null,5,null,null,null,null,null,null,"n/a","n/a","n/a","n/a","n/a","n/a","n/a","n/a","n/a","n/a","n/a","n/a","n/a","n/a","n/a","n/a","n/a","n/a","n/a","n/a","n/a","n/a","n/a","n/a","n/a","n/a","n/a","n/a","n/a","n/a","n/a","n/a","n/a","n/a","n/a","n/a","n/a","n/a","n/a","n/a","n/a","n/a","n/a","n/a","n/a","n/a","n/a","n/a","n/a","n/a"]
[null,null,null,null,6,null,null,null,null,null,null,null,"n/a","n/a","n/a","n/a","n/a","n/a","n/a","n/a","n/a","n/a","n/a","n/a","n/a","n/a","n/a","n/a","n/a","n/a","n/a","n/a","n/a","n/a","n/a","n/a","n/a","n/a","n/a","n/a","n/a","n/a","n/a","n/a","n/a","n/a","n/a","n/a","n/a","n/a","n/a","n/a","n/a","n/a","n/a","n/a","n/a","n/a","n/a","n/a","n/a"]
[null,null,null,null,7,null,null,null,null,null,null,null,null,"n/a","n/a","n/a","n/a","n/a","n/a","n/a","n/a","n/a","n/a","n/a","n/a","n/a","n/a","n/a","n/a","n/a","n/a","n/a","n/a","n/a","n/a","n/a","n/a","n/a","n/a","n/a","n/a","n/a","n/a","n/a","n/a","n/a","n/a","n/a","n/a","n/a","n/a","n/a","n/a","n/a","n/a","n/a","n/a","n/a","n/a","n/a","n/a"]
[null,null,null,null,8,null,null,null,null,null,null,null,null,null,"n/a","n/a","n/a","n/a","n/a","n/a","n/a","n/a","n/a","n/a","n/a","n/a","n/a","n/a","n/a","n/a","n/a","n/a","n/a","n/a","n/a","n/a","n/a","n/a","n/a","n/a","n/a","n/a","n/a","n/a","n/a","n/a","n/a","n/a","n/a","n/a","n/a","n/a","n/a","n/a","n/a","n/a","n/a","n/a","n/a","n/a","n/a"]
[null,null,null,null,9,null,null,null,null,null,null,null,null,null,null,"n/a","n/a","n/a","n/a","n/a","n/a","n/a","n/a","n/a","n/a","n/a","n/a","n/a","n/a","n/a","n/a","n/a","n/a","n/a","n/a","n/a","n/a","n/a","n/a","n/a","n/a","n/a","n/a","n/a","n/a","n/a","n/a","n/a","n/a","n/a","n/a","n/a","n/a","n/a","n/a","n/a","n/a","n/a","n/a","n/a","n/a"]
[null,null,null,null,10,null,null,null,null,null,null,null,null,null,null,null,"n/a","n/a","n/a","n/a","n/a","n/a","n/a","n/a","n/a","n/a","n/a","n/a","n/a","n/a","n/a","n/a","n/a","n/a","n/a","n/a","n/a","n/a","n/a","n/a","n/a","n/a","n/a","n/a","n/a","n/a","n/a","n/a","n/a","n/a","n/a","n/a","n/a","n/a","n/a","n/a","n/a","n/a","n/a","n/a","n/a"]
[null,null,{"$f":"Asset14","v":"Land & Easements (System) - combined"},null,null,null,0.13956917855059131,0.1434736258097708,0.14988252585047007,0.15557040877126491,0.16431348502943519,0,0,0,0,0,0,0,0,0,0,0,0,0,0,0,0,0,0,0,0,0,0,0,0,0,0,0,0,0,0,0,0,0,0,0,0,0,0,0,0,0,0,0,0,0,0,0,0,0,0]
[null,{"$f":"C974","v":"Land Improvements"},null,"Initial Asset Base",null,null,3.0692969022160126,3.0699042374475787,3.0704812059175666,3.0710293259640546,3.0715500400082183,3.0720447183501745,3.0725146627750326,3.0729611099786474,3.0733852348220818,3.0737881534233442,3.0741709260945433,3.0745345601321832,3.0748800124679407,3.0752081921869099,3.0755199629199308,3.0758161451163017,3.0760975182028529,3.0763648226350768,3.0766187618456895,3.0768600040957721,3.0770891842333499,3.0773069053640492,3.0775137404382136,3.0777102337586695,3.0778969024131029,3.078074237634814,3.0782427060954403,0.62019632266048108,-2.8888129285834178E-3,-2.7443722821542471E-3,-2.6071536680465353E-3,-2.4767959846442086E-3,-2.3529561854119989E-3,-2.2353083761413981E-3,-2.1235429573343281E-3,-4.4342574698655546E-2,-5.9455855917528288E-3,4.9704220505280704E-4,4.6635699557965437E-3,4.7802319402067972E-3,0,0,0,0,0,0,0,0,0,0,0,0,0,0,0]
[null,null,null,"Capex in year",0]
[null,null,null,null,1,null,null,1.8949363799693936E-2,1.8001895609709242E-2,1.7101800829223777E-2,1.6246710787762592E-2,1.5434375248374462E-2,1.4662656485955739E-2,1.3929523661657952E-2,1.3233047478575052E-2,1.2571395104646301E-2,1.1942825349413986E-2,1.1345684081943287E-2,1.0778399877846123E-2,1.0239479883953817E-2,9.7275058897561273E-3,9.2411305952683209E-3,8.7790740655049049E-3,8.3401203622296589E-3,7.9231143441181751E-3,7.5269586269122663E-3,7.1506106955666528E-3,6.7930801607883201E-3,6.4534261527489046E-3,6.1307548451114595E-3,5.8242171028558875E-3,5.5330062477130923E-3,5.2563559353274378E-3,4.9935381385610676E-3,4.7438612316330134E-3,4.5066681700513637E-3,4.2813347615487957E-3,4.0672680234713566E-3,3.8639046222977889E-3,3.6707093911828989E-3,3.4871739216237531E-3,3.3128152255425666E-3,3.147174464265439E-3,2.9898157410521674E-3,2.840324953999559E-3,2.6983087062995813E-3,2.5633932709846034E-3,4.8704472148707489E-2,0,0,0,0,0,0,0,0,0,0,0,0,0]
[null,null,null,null,2,null,null,null,2.0327691079468753E-2,1.9311306525495314E-2,1.8345741199220549E-2,1.742845413925952E-2,1.6557031432296549E-2,1.572917986068172E-2,1.4942720867647634E-2,1.4195584824265252E-2,1.348580558305199E-2,1.2811515303899393E-2,1.2170939538704422E-2,1.15623925617692E-2,1.098427293368074E-2,1.0435059286996704E-2,9.9133063226468695E-3,9.4176410065145259E-3,8.9467589561888008E-3,8.4994210083793615E-3,8.0744499579603925E-3,7.6707274600623723E-3,7.2871910870592541E-3,6.9228315327062905E-3,6.576689956070976E-3,6.2478554582674276E-3,5.9354626853540555E-3,5.6386895510863524E-3,5.3567550735320341E-3,5.0889173198554313E-3,4.8344714538626592E-3,4.5927478811695248E-3,4.3631104871110485E-3,4.144954962755497E-3,3.9377072146177215E-3,3.740821853886835E-3,3.5537807611924926E-3,3.3760917231328673E-3,3.2072871369762243E-3,3.0469227801274137E-3,2.8945766411210432E-3,2.7498478090649918E-3,5.2247108372234841E-2,0,0,0,0,0,0,0,0,0,0,0,0]
[null,null,null,null,3,null,null,null,null,2.1633470384293269E-2,2.0551796865078607E-2,1.9524207021824676E-2,1.8547996670733442E-2,1.7620596837196772E-2,1.6739566995336932E-2,1.5902588645570086E-2,1.5107459213291582E-2,1.4352086252627003E-2,1.3634481939995651E-2,1.2952757842995868E-2,1.2305119950846075E-2,1.1689863953303773E-2,1.1105370755638585E-2,1.0550102217856655E-2,1.0022597106963823E-2,9.5214672516156316E-3,9.0453938890348515E-3,8.5931241945831072E-3,8.1634679848539542E-3,7.7552945856112568E-3,7.3675298563306941E-3,6.9991533635141582E-3,6.649195695338451E-3,6.3167359105715292E-3,6.0008991150429531E-3,5.7008541592908036E-3,5.415811451326265E-3,5.145020878759953E-3,4.8877698348219548E-3,4.6433813430808565E-3,4.4112122759268138E-3,4.1906516621304729E-3,3.9811190790239497E-3,3.7820631250727534E-3,3.5929599688191171E-3,3.4133119703781598E-3,3.2426463718592527E-3,3.0805140532662915E-3,2.926488350602976E-3,5.5603278661456534E-2,0,0,0,0,0,0,0,0,0,0,0]
[null,null,null,null,4,null,null,null,null,null,2.2688258780475919E-2,2.1553845841452125E-2,2.0476153549379518E-2,1.9452345871910543E-2,1.8479728578315018E-2,1.7555742149399266E-2,1.6677955041929305E-2,1.5844057289832836E-2,1.5051854425341196E-2,1.4299261704074136E-2,1.358429861887043E-2,1.2905083687926908E-2,1.2259829503530564E-2,1.1646838028354038E-2,1.1064496126936335E-2,1.0511271320589519E-2,9.9857077545600428E-3,9.48642236683204E-3,9.0121012484904381E-3,8.5614961860659162E-3,8.1334213767626177E-3,7.726750307924489E-3,7.3404127925282654E-3,6.973392152901851E-3,6.6247225452567603E-3,6.2934864179939225E-3,5.9788120970942259E-3,5.6798714922395152E-3,5.3958779176275385E-3,5.1260840217461625E-3,4.8697798206588554E-3,4.6262908296259139E-3,4.3949762881446185E-3,4.175227473737388E-3,3.9664661000505192E-3,3.7681427950479927E-3,3.5797356552955927E-3,3.400748872530814E-3,3.2307114289042726E-3,3.0691758574590577E-3,5.8314341291722083E-2,0,0,0,0,0,0,0,0,0,0]
[null,null,null,null,5,null,null,null,null,null,null,2.4203271936622455E-2,2.2993108339791332E-2,2.1843452922801765E-2,2.0751280276661677E-2,1.9713716262828598E-2,1.8728030449687166E-2,1.7791628927202808E-2,1.6902047480842664E-2,1.6056945106800533E-2,1.5254097851460507E-2,1.449139295888748E-2,1.3766823310943107E-2,1.3078482145395951E-2,1.2424558038126154E-2,1.1803330136219847E-2,1.1213163629408855E-2,1.0652505447938413E-2,1.0119880175541494E-2,9.6138861667644186E-3,9.1331918584261988E-3,8.6765322655048896E-3,8.242705652229643E-3,7.8305703696181627E-3,7.4390418511372548E-3,7.0670897585803924E-3,6.713735270651373E-3,6.3780485071188043E-3,6.0591460817628635E-3,5.7561887776747186E-3,5.4683793387909838E-3,5.1949603718514361E-3,4.9352123532588653E-3,4.6884517355959207E-3,4.4540291488161261E-3,4.231327691375319E-3,4.0197613068065534E-3,3.8187732414662269E-3,3.6278345793929155E-3,3.4464428504232696E-3,3.2741207079021056E-3,6.2208293450140006E-2,0,0,0,0,0,0,0,0,0]
[null,null,null,null,6,null,null,null,null,null,null,null,0,0,0,0,0,0,0,0,0,0,0,0,0,0,0,0,0,0,0,0,0,0,0,0,0,0,0,0,0,0,0,0,0,0,0,0,0,0,0,0,0,0,0,0,0,0,0,0,0]
[null,null,null,null,7,null,null,null,null,null,null,null,null,0,0,0,0,0,0,0,0,0,0,0,0,0,0,0,0,0,0,0,0,0,0,0,0,0,0,0,0,0,0,0,0,0,0,0,0,0,0,0,0,0,0,0,0,0,0,0,0]
[null,null,null,null,8,null,null,null,null,null,null,null,null,null,0,0,0,0,0,0,0,0,0,0,0,0,0,0,0,0,0,0,0,0,0,0,0,0,0,0,0,0,0,0,0,0,0,0,0,0,0,0,0,0,0,0,0,0,0,0,0]
[null,null,null,null,9,null,null,null,null,null,null,null,null,null,null,0,0,0,0,0,0,0,0,0,0,0,0,0,0,0,0,0,0,0,0,0,0,0,0,0,0,0,0,0,0,0,0,0,0,0,0,0,0,0,0,0,0,0,0,0,0]
[null,null,null,null,10,null,null,null,null,null,null,null,null,null,null,null,0,0,0,0,0,0,0,0,0,0,0,0,0,0,0,0,0,0,0,0,0,0,0,0,0,0,0,0,0,0,0,0,0,0,0,0,0,0,0,0,0,0,0,0,0]
[null,null,{"$f":"Asset15","v":"Land Improvements"},null,null,null,3.2088660807666041,3.2323272270570436,3.2586933184572149,3.2846463124743317,3.3136960326701912,3.1701888725377074,3.165751609253189,3.1615362091328967,3.157531579018618,3.153727180410054,3.150113001731917,3.1466795319876883,3.143417735730671,3.1403190292865037,3.1373752581645444,3.1345786755986849,3.131921922161117,3.1293980063954274,3.1270002864180224,3.1247224524394888,3.1225585101598807,3.1205027649942534,3.1185498070869073,3.1166944970749286,3.1149319525635493,3.1132575352777385,3.1116668388562183,0.65194924878322014,2.7276466888018599E-2,2.5912643543617664E-2,2.4617011366436785E-2,2.3386160798114945E-2,2.2216852758209192E-2,2.1106010120298738E-2,2.0050709614283801E-2,-2.327703475561832E-2,1.4066677354132535E-2,1.9508692003643906E-2,2.2724637264458086E-2,2.1938245883435264E-2,1.6300113246067043E-2,6.1754356125035818E-2,6.2032142731134998E-2,6.2118897369338857E-2,6.1588461999624186E-2,6.2208293450140006E-2,0,0,0,0,0,0,0,0,0]
[null,{"$f":"C987","v":"Control Centre - SCADA"},null,"Initial Asset Base",null,null,1.0069526990208315,0.8055621592166653,1.0750839522181324,0.94138968316970573,1.0616942415629647,7.7774643393166115E-2,6.6306116522692221E-2,0,0,0,0,0,0,0,0,0,0,0,0,0,0,0,0,0,0,0,0,0,0,0,0,0,0,0,0,0,0,0,0,0,0,0,0,0,0,0,0,0,0,0,0,0,0,0,0]
[null,null,null,"Capex in year",0]
[null,null,null,null,1,null,null,0.69344628430015032,0.55475702744012023,0.44380562195209622,0.35504449756167694,0.28403559804934153,0.22722847843947325,0.18178278275157861,0.72713113100631421,0,0,0,0,0,0,0,0,0,0,0,0,0,0,0,0,0,0,0,0,0,0,0,0,0,0,0,0,0,0,0,0,0,0,0,0,0,0,0,0,0,0,0,0,0,0]
[null,null,null,null,2,null,null,null,0.74300172165674594,0.59440137732539666,0.47552110186031737,0.38041688148825387,0.30433350519060309,0.24346680415248248,0.19477344332198598,0.77909377328794394,0,0,0,0,0,0,0,0,0,0,0,0,0,0,0,0,0,0,0,0,0,0,0,0,0,0,0,0,0,0,0,0,0,0,0,0,0,0,0,0,0,0,0,0,0]
[null,null,null,null,3,null,null,null,null,0.7911045449423143,0.63288363595385144,0.50630690876308115,0.40504552701046492,0.32403642160837198,0.2592291372866975,0.20738330982935801,0.82953323931743217,0,0,0,0,0,0,0,0,0,0,0,0,0,0,0,0,0,0,0,0,0,0,0,0,0,0,0,0,0,0,0,0,0,0,0,0,0,0,0,0,0,0,0,0]
[null,null,null,null,4,null,null,null,null,null,0.8309315866309519,0.66474526930476152,0.53179621544380917,0.42543697235504735,0.34034957788403786,0.27227966230723027,0.21782372984578427,0.87129491938313697,0,0,0,0,0,0,0,0,0,0,0,0,0,0,0,0,0,0,0,0,0,0,0,0,0,0,0,0,0,0,0,0,0,0,0,0,0,0,0,0,0,0,0]
[null,null,null,null,5,null,null,null,null,null,null,0.88712640807614529,0.70970112646091632,0.56776090116873301,0.45420872093498643,0.36336697674798918,0.2906935813983913,0.23255486511871304,0.93021946047485216,0,0,0,0,0,0,0,0,0,0,0,0,0,0,0,0,0,0,0,0,0,0,0,0,0,0,0,0,0,0,0,0,0,0,0,0,0,0,0,0,0,0]
[null,null,null,null,6,null,null,null,null,null,null,null,0,0,0,0,0,0,0,0,0,0,0,0,0,0,0,0,0,0,0,0,0,0,0,0,0,0,0,0,0,0,0,0,0,0,0,0,0,0,0,0,0,0,0,0,0,0,0,0,0]
[null,null,null,null,7,null,null,null,null,null,null,null,null,0,0,0,0,0,0,0,0,0,0,0,0,0,0,0,0,0,0,0,0,0,0,0,0,0,0,0,0,0,0,0,0,0,0,0,0,0,0,0,0,0,0,0,0,0,0,0,0]
[null,null,null,null,8,null,null,null,null,null,null,null,null,null,0,0,0,0,0,0,0,0,0,0,0,0,0,0,0,0,0,0,0,0,0,0,0,0,0,0,0,0,0,0,0,0,0,0,0,0,0,0,0,0,0,0,0,0,0,0,0]
[null,null,null,null,9,null,null,null,null,null,null,null,null,null,null,0,0,0,0,0,0,0,0,0,0,0,0,0,0,0,0,0,0,0,0,0,0,0,0,0,0,0,0,0,0,0,0,0,0,0,0,0,0,0,0,0,0,0,0,0,0]
[null,null,null,null,10,null,null,null,null,null,null,null,null,null,null,null,0,0,0,0,0,0,0,0,0,0,0,0,0,0,0,0,0,0,0,0,0,0,0,0,0,0,0,0,0,0,0,0,0,0,0,0,0,0,0,0,0,0,0,0,0]
[null,null,{"$f":"Asset16","v":"Control Centre - SCADA"},null,null,null,2.2801224376476608,2.8078463405912388,3.7401738824669373,4.1899471193395943,4.8550768301761575,2.8004057090747496,2.244410969067959,1.7424838820362134,1.9756920104340217,1.6221237221725215,1.3380505505616078,1.10384978450185,0.93021946047485216,0,0,0,0,0,0,0,0,0,0,0,0,0,0,0,0,0,0,0,0,0,0,0,0,0,0,0,0,0,0,0,0,0,0,0,0,0,0,0,0,0,0]
[null,{"$f":"C1000","v":"Other Equipment"},null,"Initial Asset Base",null,null,0.44459550086787136,0.44596858674817919,0.44727301833447158,0.44851222834144938,0.44968947784807828,0.45080786487937574,0.45187033255910836,0.45287967685485431,0.45383855393581296,0.45474948716272373,0.4556148737282889,0.45643699096557583,0.45721800234099841,0.45795996314764986,0.45866482591396879,0.45933444554197173,0.45997058418857451,0.46057491590284716,0.4611490310314062,0.46169444040353724,0.46221257930706178,0.46270481126541008,0.46317243162584093,0.46361667096825027,0.46403869834353911,0.46443962435006353,0.27387474419702396,-6.8748786968775514E-3,-6.5311347620336749E-3,-6.2045780239319889E-3,-5.8943491227353871E-3,-5.5996316665986199E-3,-5.3196500832686901E-3,-5.0536675791052529E-3,-4.8009842001499881E-3,-9.1218699802849801E-2,0,0,0,0,0,0,0,0,0,0,0,0,0,0,0,0,0,0,0]
[null,null,null,"Capex in year",0]
[null,null,null,null,1,null,null,0,0,0,0,0,0,0,0,0,0,0,0,0,0,0,0,0,0,0,0,0,0,0,0,0,0,0,0,0,0,0,0,0,0,0,0,0,0,0,0,0,0,0,0,0,0,0,0,0,0,0,0,0,0]
[null,null,null,null,2,null,null,null,0,0,0,0,0,0,0,0,0,0,0,0,0,0,0,0,0,0,0,0,0,0,0,0,0,0,0,0,0,0,0,0,0,0,0,0,0,0,0,0,0,0,0,0,0,0,0,0,0,0,0,0,0]
[null,null,null,null,3,null,null,null,null,0,0,0,0,0,0,0,0,0,0,0,0,0,0,0,0,0,0,0,0,0,0,0,0,0,0,0,0,0,0,0,0,0,0,0,0,0,0,0,0,0,0,0,0,0,0,0,0,0,0,0,0]
[null,null,null,null,4,null,null,null,null,null,0,0,0,0,0,0,0,0,0,0,0,0,0,0,0,0,0,0,0,0,0,0,0,0,0,0,0,0,0,0,0,0,0,0,0,0,0,0,0,0,0,0,0,0,0,0,0,0,0,0,0]
[null,null,null,null,5,null,null,null,null,null,null,0,0,0,0,0,0,0,0,0,0,0,0,0,0,0,0,0,0,0,0,0,0,0,0,0,0,0,0,0,0,0,0,0,0,0,0,0,0,0,0,0,0,0,0,0,0,0,0,0,0]
[null,null,null,null,6,null,null,null,null,null,null,null,0,0,0,0,0,0,0,0,0,0,0,0,0,0,0,0,0,0,0,0,0,0,0,0,0,0,0,0,0,0,0,0,0,0,0,0,0,0,0,0,0,0,0,0,0,0,0,0,0]
[null,null,null,null,7,null,null,null,null,null,null,null,null,0,0,0,0,0,0,0,0,0,0,0,0,0,0,0,0,0,0,0,0,0,0,0,0,0,0,0,0,0,0,0,0,0,0,0,0,0,0,0,0,0,0,0,0,0,0,0,0]
[null,null,null,null,8,null,null,null,null,null,null,null,null,null,0,0,0,0,0,0,0,0,0,0,0,0,0,0,0,0,0,0,0,0,0,0,0,0,0,0,0,0,0,0,0,0,0,0,0,0,0,0,0,0,0,0,0,0,0,0,0]
[null,null,null,null,9,null,null,null,null,null,null,null,null,null,null,0,0,0,0,0,0,0,0,0,0,0,0,0,0,0,0,0,0,0,0,0,0,0,0,0,0,0,0,0,0,0,0,0,0,0,0,0,0,0,0,0,0,0,0,0,0]
[null,null,null,null,10,null,null,null,null,null,null,null,null,null,null,null,0,0,0,0,0,0,0,0,0,0,0,0,0,0,0,0,0,0,0,0,0,0,0,0,0,0,0,0,0,0,0,0,0,0,0,0,0,0,0,0,0,0,0,0,0]
[null,null,{"$f":"Asset17","v":"Other Equipment"},null,null,null,0.44459550086787136,0.44596858674817919,0.44727301833447158,0.44851222834144938,0.44968947784807828,0.45080786487937574,0.45187033255910836,0.45287967685485431,0.45383855393581296,0.45474948716272373,0.4556148737282889,0.45643699096557583,0.45721800234099841,0.45795996314764986,0.45866482591396879,0.45933444554197173,0.45997058418857451,0.46057491590284716,0.4611490310314062,0.46169444040353724,0.46221257930706178,0.46270481126541008,0.46317243162584093,0.46361667096825027,0.46403869834353911,0.46443962435006353,0.27387474419702396,-6.8748786968775514E-3,-6.5311347620336749E-3,-6.2045780239319889E-3,-5.8943491227353871E-3,-5.5996316665986199E-3,-5.3196500832686901E-3,-5.0536675791052529E-3,-4.8009842001499881E-3,-9.1218699802849801E-2,0,0,0,0,0,0,0,0,0,0,0,0,0,0,0,0,0,0,0]
[null,{"$f":"C1013","v":"Generation Assets"},null,"Initial Asset Base",null,null,0.99637722566383635,0.99637722566383635,0.99637722566383635,0.99637722566383635,0.99637722566383635,0.50409118500995476,0,0,0,0,0,0,0,0,0,0,0,0,0,0,0,0,0,0,0,0,0,0,0,0,0,0,0,0,0,0,0,0,0,0,0,0,0,0,0,0,0,0,0,0,0,0,0,0,0]
[null,null,null,"Capex in year",0]
[null,null,null,null,1,null,null,0,0,0,0,0,0,0,0,0,0,0,0,0,0,0,0,0,0,0,0,0,0,0,0,0,0,0,0,0,0,0,0,0,0,0,0,0,0,0,0,0,0,0,0,0,0,0,0,0,0,0,0,0,0]
[null,null,null,null,2,null,null,null,0,0,0,0,0,0,0,0,0,0,0,0,0,0,0,0,0,0,0,0,0,0,0,0,0,0,0,0,0,0,0,0,0,0,0,0,0,0,0,0,0,0,0,0,0,0,0,0,0,0,0,0,0]
[null,null,null,null,3,null,null,null,null,0,0,0,0,0,0,0,0,0,0,0,0,0,0,0,0,0,0,0,0,0,0,0,0,0,0,0,0,0,0,0,0,0,0,0,0,0,0,0,0,0,0,0,0,0,0,0,0,0,0,0,0]
[null,null,null,null,4,null,null,null,null,null,0,0,0,0,0,0,0,0,0,0,0,0,0,0,0,0,0,0,0,0,0,0,0,0,0,0,0,0,0,0,0,0,0,0,0,0,0,0,0,0,0,0,0,0,0,0,0,0,0,0,0]
[null,null,null,null,5,null,null,null,null,null,null,0,0,0,0,0,0,0,0,0,0,0,0,0,0,0,0,0,0,0,0,0,0,0,0,0,0,0,0,0,0,0,0,0,0,0,0,0,0,0,0,0,0,0,0,0,0,0,0,0,0]
[null,null,null,null,6,null,null,null,null,null,null,null,0,0,0,0,0,0,0,0,0,0,0,0,0,0,0,0,0,0,0,0,0,0,0,0,0,0,0,0,0,0,0,0,0,0,0,0,0,0,0,0,0,0,0,0,0,0,0,0,0]
[null,null,null,null,7,null,null,null,null,null,null,null,null,0,0,0,0,0,0,0,0,0,0,0,0,0,0,0,0,0,0,0,0,0,0,0,0,0,0,0,0,0,0,0,0,0,0,0,0,0,0,0,0,0,0,0,0,0,0,0,0]
[null,null,null,null,8,null,null,null,null,null,null,null,null,null,0,0,0,0,0,0,0,0,0,0,0,0,0,0,0,0,0,0,0,0,0,0,0,0,0,0,0,0,0,0,0,0,0,0,0,0,0,0,0,0,0,0,0,0,0,0,0]
[null,null,null,null,9,null,null,null,null,null,null,null,null,null,null,0,0,0,0,0,0,0,0,0,0,0,0,0,0,0,0,0,0,0,0,0,0,0,0,0,0,0,0,0,0,0,0,0,0,0,0,0,0,0,0,0,0,0,0,0,0]
[null,null,null,null,10,null,null,null,null,null,null,null,null,null,null,null,0,0,0,0,0,0,0,0,0,0,0,0,0,0,0,0,0,0,0,0,0,0,0,0,0,0,0,0,0,0,0,0,0,0,0,0,0,0,0,0,0,0,0,0,0]
[null,null,{"$f":"Asset18","v":"Generation Assets"},null,null,null,0.99637722566383635,0.99637722566383635,0.99637722566383635,0.99637722566383635,0.99637722566383635,0.50409118500995476,0,0,0,0,0,0,0,0,0,0,0,0,0,0,0,0,0,0,0,0,0,0,0,0,0,0,0,0,0,0,0,0,0,0,0,0,0,0,0,0,0,0,0,0,0,0,0,0,0]
[null,{"$f":"C1026","v":"Motor Vehicles"},null,"Initial Asset Base",null,null,19.916946857860548,19.323226424997376,18.708307682059818,2.4772964700432718,2.1102895855924166,3.771957924635041,3.6930328597338864,4.6691743327874704,-7.3230914610017699E-16,-3.5741348244677081E-16,0,0,0,0,0,0,0,0,0,0,0,0,0,0,0,0,0,0,0,0,0,0,0,0,0,0,0,0,0,0,0,0,0,0,0,0,0,0,0,0,0,0,0,0,0]
[null,null,null,"Capex in year",0]
[null,null,null,null,1,null,null,8.6470463232350827,7.3660024234965515,6.2747428052007663,5.3451512785043569,4.5532770150222293,3.8787174572411587,3.304092648760987,2.8145974415371375,2.3976200427908947,2.0424170734885396,11.743898172559106,0,0,0,0,0,0,0,0,0,0,0,0,0,0,0,0,0,0,0,0,0,0,0,0,0,0,0,0,0,0,0,0,0,0,0,0,0,0,0,0,0,0,0]
[null,null,null,null,2,null,null,null,8.7190473526241092,7.4273366337168349,6.3269904657587857,5.3896585449056316,4.5911906123270194,3.9110142253156095,3.3316047104540374,2.8380336422386248,2.4175842137588277,2.0594235894982607,11.841685639615001,0,0,0,0,0,0,0,0,0,0,0,0,0,0,0,0,0,0,0,0,0,0,0,0,0,0,0,0,0,0,0,0,0,0,0,0,0,0,0,0,0,0]
[null,null,null,null,3,null,null,null,null,6.9634085062814721,5.9317924312768096,5.0530083673839492,4.3044145351789203,3.6667234929301906,3.1235051976812733,2.6607636869136777,2.2665764740375773,1.9307873667727513,1.6447447939175284,9.4572825650257926,0,0,0,0,0,0,0,0,0,0,0,0,0,0,0,0,0,0,0,0,0,0,0,0,0,0,0,0,0,0,0,0,0,0,0,0,0,0,0,0,0]
[null,null,null,null,4,null,null,null,null,null,5.8291164947893979,4.9655436807465243,4.2299075798951868,3.6032546050959007,3.0694391080446564,2.6147073883343368,2.2273433308033237,1.8973665410546832,1.6162752016391744,1.3768270236185562,7.9167553858066988,0,0,0,0,0,0,0,0,0,0,0,0,0,0,0,0,0,0,0,0,0,0,0,0,0,0,0,0,0,0,0,0,0,0,0,0,0,0,0,0]
[null,null,null,null,5,null,null,null,null,null,null,8.1601406907628355,6.9512309587979706,5.9214189649019753,5.0441717108424236,4.296887012939842,3.6603111591709769,3.1180428392937944,2.6561105668058254,2.2626127050568146,1.9274108228261753,11.082612231250508,0,0,0,0,0,0,0,0,0,0,0,0,0,0,0,0,0,0,0,0,0,0,0,0,0,0,0,0,0,0,0,0,0,0,0,0,0,0,0]
[null,null,null,null,6,null,null,null,null,null,null,null,0,0,0,0,0,0,0,0,0,0,0,0,0,0,0,0,0,0,0,0,0,0,0,0,0,0,0,0,0,0,0,0,0,0,0,0,0,0,0,0,0,0,0,0,0,0,0,0,0]
[null,null,null,null,7,null,null,null,null,null,null,null,null,0,0,0,0,0,0,0,0,0,0,0,0,0,0,0,0,0,0,0,0,0,0,0,0,0,0,0,0,0,0,0,0,0,0,0,0,0,0,0,0,0,0,0,0,0,0,0,0]
[null,null,null,null,8,null,null,null,null,null,null,null,null,null,0,0,0,0,0,0,0,0,0,0,0,0,0,0,0,0,0,0,0,0,0,0,0,0,0,0,0,0,0,0,0,0,0,0,0,0,0,0,0,0,0,0,0,0,0,0,0]
[null,null,null,null,9,null,null,null,null,null,null,null,null,null,null,0,0,0,0,0,0,0,0,0,0,0,0,0,0,0,0,0,0,0,0,0,0,0,0,0,0,0,0,0,0,0,0,0,0,0,0,0,0,0,0,0,0,0,0,0,0]
[null,null,null,null,10,null,null,null,null,null,null,null,null,null,null,null,0,0,0,0,0,0,0,0,0,0,0,0,0,0,0,0,0,0,0,0,0,0,0,0,0,0,0,0,0,0,0,0,0,0,0,0,0,0,0,0,0,0,0,0,0]
[null,null,{"$f":"Asset19","v":"Motor Vehicles"},null,null,null,19.916946857860548,27.97027274823246,34.793357458180481,23.142784415242343,25.543340255921763,31.893586223456211,27.648494003174143,25.075678269792132,17.383318168559526,14.808011773217373,12.614232251259246,20.749518509178593,17.758816201977531,13.096722293701163,9.8441662086328741,11.082612231250508,0,0,0,0,0,0,0,0,0,0,0,0,0,0,0,0,0,0,0,0,0,0,0,0,0,0,0,0,0,0,0,0,0,0,0,0,0,0,0]
[null,{"$f":"C1039","v":"Plant & Equipment"},null,"Initial Asset Base",null,null,0.71022402201600021,0.42613441320959994,0.25568064792576028,0.1534083887554562,9.2045033253273803E-2,6.7888288921190656E-2,4.127929492746274E-2,2.8899966031257662E-2,0,0,0,0,0,0,0,0,0,0,0,0,0,0,0,0,0,0,0,0,0,0,0,0,0,0,0,0,0,0,0,0,0,0,0,0,0,0,0,0,0,0,0,0,0,0,0]
[null,null,null,"Capex in year",0]
[null,null,null,null,1,null,null,2.7561543067050431,1.6536925840230259,0.99221555041381537,0.59532933024828905,0.35719759814897362,0.21431855888938431,0.12859113533363065,7.715468120017839E-2,4.6292808720107104E-2,2.7775685232064265E-2,4.1663527848096571E-2,0,0,0,0,0,0,0,0,0,0,0,0,0,0,0,0,0,0,0,0,0,0,0,0,0,0,0,0,0,0,0,0,0,0,0,0,0,0,0,0,0,0,0]
[null,null,null,null,2,null,null,null,2.6637573916711101,1.5982544350026662,0.95895266100159982,0.57537159660095971,0.345222957960576,0.20713377477634545,0.12428026486580741,7.4568158919484526E-2,4.4740895351690568E-2,2.6844537211014343E-2,4.0266805816521867E-2,0,0,0,0,0,0,0,0,0,0,0,0,0,0,0,0,0,0,0,0,0,0,0,0,0,0,0,0,0,0,0,0,0,0,0,0,0,0,0,0,0,0]
[null,null,null,null,3,null,null,null,null,2.7999930876693693,1.6799958526016217,1.0079975115609732,0.60479850693658399,0.36287910416195041,0.21772746249717018,0.13063647749830204,7.8381886498981146E-2,4.702913189938869E-2,2.8217479139633284E-2,4.2326218709449748E-2,0,0,0,0,0,0,0,0,0,0,0,0,0,0,0,0,0,0,0,0,0,0,0,0,0,0,0,0,0,0,0,0,0,0,0,0,0,0,0,0,0]
[null,null,null,null,4,null,null,null,null,null,2.7654642018685132,1.6592785211211081,0.99556711267266462,0.59734026760359882,0.35840416056215929,0.21504249633729558,0.12902549780237749,7.7415298681426492E-2,4.6449179208855898E-2,2.786950752531361E-2,4.1804261287970768E-2,0,0,0,0,0,0,0,0,0,0,0,0,0,0,0,0,0,0,0,0,0,0,0,0,0,0,0,0,0,0,0,0,0,0,0,0,0,0,0,0]
[null,null,null,null,5,null,null,null,null,null,null,2.772809432278212,1.6636856593669274,0.99821139562015626,0.59892683737209362,0.35935610242325605,0.21561366145395378,0.12936819687237211,7.7620918123423269E-2,4.6572550874054035E-2,2.7943530524432349E-2,4.1915295786648876E-2,0,0,0,0,0,0,0,0,0,0,0,0,0,0,0,0,0,0,0,0,0,0,0,0,0,0,0,0,0,0,0,0,0,0,0,0,0,0,0]
[null,null,null,null,6,null,null,null,null,null,null,null,0,0,0,0,0,0,0,0,0,0,0,0,0,0,0,0,0,0,0,0,0,0,0,0,0,0,0,0,0,0,0,0,0,0,0,0,0,0,0,0,0,0,0,0,0,0,0,0,0]
[null,null,null,null,7,null,null,null,null,null,null,null,null,0,0,0,0,0,0,0,0,0,0,0,0,0,0,0,0,0,0,0,0,0,0,0,0,0,0,0,0,0,0,0,0,0,0,0,0,0,0,0,0,0,0,0,0,0,0,0,0]
[null,null,null,null,8,null,null,null,null,null,null,null,null,null,0,0,0,0,0,0,0,0,0,0,0,0,0,0,0,0,0,0,0,0,0,0,0,0,0,0,0,0,0,0,0,0,0,0,0,0,0,0,0,0,0,0,0,0,0,0,0]
[null,null,null,null,9,null,null,null,null,null,null,null,null,null,null,0,0,0,0,0,0,0,0,0,0,0,0,0,0,0,0,0,0,0,0,0,0,0,0,0,0,0,0,0,0,0,0,0,0,0,0,0,0,0,0,0,0,0,0,0,0]
[null,null,null,null,10,null,null,null,null,null,null,null,null,null,null,null,0,0,0,0,0,0,0,0,0,0,0,0,0,0,0,0,0,0,0,0,0,0,0,0,0,0,0,0,0,0,0,0,0,0,0,0,0,0,0,0,0,0,0,0,0]
[null,null,{"$f":"Asset20","v":"Plant & Equipment"},null,null,null,0.71022402201600021,3.1822887199146432,4.5731306236198961,5.5438714618413067,6.0917870789732973,6.4405429486314176,3.8648720907535994,2.3230556435269394,1.376493406497409,0.82589604389844529,0.49553762633906723,0.32232069251229822,0.1925543822884343,0.1167682771088174,6.974779181240312E-2,4.1915295786648876E-2,0,0,0,0,0,0,0,0,0,0,0,0,0,0,0,0,0,0,0,0,0,0,0,0,0,0,0,0,0,0,0,0,0,0,0,0,0,0,0]
[null,{"$f":"C1052","v":"Buildings"},null,"Initial Asset Base",null,null,13.838924056839618,13.839066852308278,13.839202508003503,13.839331380913967,13.839453810178908,13.839570117980603,13.839680610392213,13.839785578183241,13.839885297584718,13.839980031016122,13.840070027775955,13.840155524697797,13.840236746773547,13.840313907745509,13.840387210668872,13.840456848446069,13.840523004334406,13.840585852428324,13.840645558117547,13.840702278522309,13.840756162906834,13.840807353072131,13.840855983729165,13.840902182853347,3.7235929878841181,-7.92199481898791E-4,-7.5258950780385139E-4,-7.1496003241365883E-4,-6.7921203079297603E-4,-6.4525142925332712E-4,-6.1298885779066084E-4,-5.8233941490112785E-4,-5.5322244415607143E-4,-5.2556132194826809E-4,-4.9928325585085471E-4,-9.4863818611662376E-3,0,0,0,0,0,0,0,0,0,0,0,0,0,0,0,0,0,0,0]
[null,null,null,"Capex in year",0]
[null,null,null,null,1,null,null,1.5439736263658721,1.4667749450475784,1.3934361977951994,1.3237643879054397,1.2575761685101676,1.1946973600846591,1.1349624920804262,1.0782143674764049,1.0243036491025845,0.97308846664745541,0.9244340433150825,0.87821234114932845,0.83430172409186198,0.79258663788726891,0.75295730599290556,0.7153094406932603,0.67954396865859723,0.64556677022566744,0.61328843171438407,0.58262401012866494,0.55349280962223169,0.52581816914112012,0.499527260684064,0.47455089764986075,0.45082335276736779,0.42828218512899935,0.40686807587254936,0.38652467207892194,0.36719843847497596,0.34883851655122716,0.3313965907236659,0.31482676118748254,0.29908542312810837,0.28413115197170297,0.26992459437311783,0.25642836465446184,0.2436069464217388,0.23142659910065186,0.21985526914561931,0.20886250568833839,3.9683876080784302,0,0,0,0,0,0,0,0,0,0,0,0,0]
[null,null,null,null,2,null,null,null,1.2906824331767277,1.2261483115178913,1.1648408959419967,1.1065988511448968,1.0512689085876521,0.99870546315826947,0.94877019000035601,0.90133168050033818,0.85626509647532123,0.81345184165155515,0.77277924956897748,0.7341402870905287,0.6974332727360022,0.66256160909920203,0.62943352864424196,0.59796185221202991,0.5680637596014283,0.53966057162135694,0.51267754304028912,0.48704366588827458,0.46269148259386078,0.43955690846416773,0.41757906304095926,0.39670010988891119,0.37686510439446563,0.35802184917474239,0.34012075671600517,0.32311471888020499,0.30695898293619472,0.29161103378938497,0.27703048209991582,0.26317895799491992,0.25002001009517388,0.23751900959041522,0.22564305911089449,0.21436090615534981,0.20364286084758235,0.19346071780520316,0.18378768191494307,0.17459829781919592,3.3173676585647236,0,0,0,0,0,0,0,0,0,0,0,0]
[null,null,null,null,3,null,null,null,null,1.5955846624382866,1.5158054293163721,1.4400151578505538,1.3680143999580261,1.2996136799601246,1.2346329959621185,1.1729013461640123,1.1142562788558117,1.058543464913021,1.0056162916673701,0.95533547708400168,0.90756870322980154,0.86219026806831145,0.81908075466489594,0.77812671693165114,0.73922038108506849,0.70225936203081507,0.66714639392927433,0.6337890742328105,0.60209962052116994,0.57199463949511142,0.5433949075203558,0.516225162144338,0.49041390403712115,0.46589320883526497,0.44259854839350177,0.42046862097382665,0.39944518992513522,0.37947293042887847,0.36049928390743458,0.34247431971206288,0.32535060372645969,0.3090830735401367,0.29362891986312983,0.27894747386997326,0.26500010017647463,0.25175009516765084,0.23916259040926829,0.22720446088880486,0.21584423784436454,4.1010405190429253,0,0,0,0,0,0,0,0,0,0,0]
[null,null,null,null,4,null,null,null,null,null,1.8520764884104239,1.7594726639899028,1.6714990307904074,1.5879240792508871,1.5085278752883429,1.4331014815239258,1.3614464074477295,1.293374087075343,1.2287053827215759,1.167270113585497,1.1089066079062222,1.0534612775109111,1.0007882136353654,0.95074880295359709,0.90321136280591718,0.8580507946656214,0.81514825493234033,0.77439084218572329,0.73567130007643711,0.69888773507261526,0.66394334831898449,0.63074618090303525,0.59920887185788352,0.56924842826498934,0.54078600685173994,0.51374670650915299,0.48805937118369536,0.46365640262451058,0.440473582493285,0.41844990336862065,0.39752740820018961,0.37765103779018006,0.35876848590067106,0.34083006160563745,0.32378855852535565,0.30759913059908794,0.29221917406913356,0.27760821536567698,0.26372780459739309,0.25054141436752353,4.7602868729829453,0,0,0,0,0,0,0,0,0,0]
[null,null,null,null,5,null,null,null,null,null,null,1.7820122891876897,1.6929116747283051,1.60826609099189,1.5278527864422955,1.4514601471201807,1.3788871397641715,1.3099427827759631,1.2444456436371649,1.1822233614553068,1.1231121933825414,1.0669565837134143,1.0136087545277435,0.96292831680135638,0.91478190096128853,0.86904280591322414,0.82559066561756289,0.78431113233668492,0.74509557571985052,0.70784079693385804,0.67244875708716512,0.63882631923280686,0.60688500327116657,0.57654075310760822,0.54771371545222791,0.52032802967961644,0.49431162819563551,0.46959604678585376,0.44611624444656112,0.42381043222423309,0.40261991061302144,0.38248891508237026,0.36336446932825184,0.34519624586183917,0.32793643356874719,0.31153961189030976,0.29596263129579425,0.28116449973100455,0.26710627474445431,0.25375096100723166,0.24106341295687006,4.580204846180532,0,0,0,0,0,0,0,0,0]
[null,null,null,null,6,null,null,null,null,null,null,null,0,0,0,0,0,0,0,0,0,0,0,0,0,0,0,0,0,0,0,0,0,0,0,0,0,0,0,0,0,0,0,0,0,0,0,0,0,0,0,0,0,0,0,0,0,0,0,0,0]
[null,null,null,null,7,null,null,null,null,null,null,null,null,0,0,0,0,0,0,0,0,0,0,0,0,0,0,0,0,0,0,0,0,0,0,0,0,0,0,0,0,0,0,0,0,0,0,0,0,0,0,0,0,0,0,0,0,0,0,0,0]
[null,null,null,null,8,null,null,null,null,null,null,null,null,null,0,0,0,0,0,0,0,0,0,0,0,0,0,0,0,0,0,0,0,0,0,0,0,0,0,0,0,0,0,0,0,0,0,0,0,0,0,0,0,0,0,0,0,0,0,0,0]
[null,null,null,null,9,null,null,null,null,null,null,null,null,null,null,0,0,0,0,0,0,0,0,0,0,0,0,0,0,0,0,0,0,0,0,0,0,0,0,0,0,0,0,0,0,0,0,0,0,0,0,0,0,0,0,0,0,0,0,0,0]
[null,null,null,null,10,null,null,null,null,null,null,null,null,null,null,null,0,0,0,0,0,0,0,0,0,0,0,0,0,0,0,0,0,0,0,0,0,0,0,0,0,0,0,0,0,0,0,0,0,0,0,0,0,0,0,0,0,0,0,0,0]
[null,null,{"$f":"Asset21","v":"Buildings"},null,null,null,13.838924056839618,15.38304047867415,16.596659886227808,18.054500552665345,19.695941011753142,21.185245248663815,20.818071984541259,20.469257383624839,20.137883512754239,19.823078335427162,19.524013416966444,19.23990174442876,18.969995655517963,18.713584871052706,18.46999462581071,18.238583892830814,18.018743696499918,17.809895509985555,17.611489732796915,17.423004244467712,17.243943030554966,17.073834877337855,16.912232131781604,16.758709523503164,6.495509961501444,2.6325289254545603,2.5009024791818324,2.3758573552227409,2.2570644874616037,2.1442112630885237,2.0370006999340973,1.9351506649373926,1.8383931316905231,1.7464734751059965,1.6591498013506969,1.5671802485150539,1.497833298857409,1.4229416339145384,1.3517945522188117,1.284204824607871,1.2199945833774777,4.9289630818831123,4.0640459757509353,4.6053328944176801,5.0013502859398153,4.580204846180532,0,0,0,0,0,0,0,0,0]
[null,{"$f":"C1065","v":"Office Equipment & Furniture"},null,"Initial Asset Base",null,null,0,0,0,0,0,0,0,0,0,0,0,0,0,0,0,0,0,0,0,0,0,0,0,0,0,0,0,0,0,0,0,0,0,0,0,0,0,0,0,0,0,0,0,0,0,0,0,0,0,0,0,0,0,0,0]
[null,null,null,"Capex in year",0]
[null,null,null,null,1,null,null,0.38025677422174348,0.30420541937739476,0.24336433550191583,0.19469146840153265,0.1557531747212261,0.12460253977698087,9.9682031821584707E-2,0.39872812728633877,0,0,0,0,0,0,0,0,0,0,0,0,0,0,0,0,0,0,0,0,0,0,0,0,0,0,0,0,0,0,0,0,0,0,0,0,0,0,0,0,0,0,0,0,0,0]
[null,null,null,null,2,null,null,null,0.31787507908386509,0.25430006326709204,0.20344005061367365,0.16275204049093892,0.13020163239275112,0.10416130591420091,8.3329044731360741E-2,0.33331617892544285,0,0,0,0,0,0,0,0,0,0,0,0,0,0,0,0,0,0,0,0,0,0,0,0,0,0,0,0,0,0,0,0,0,0,0,0,0,0,0,0,0,0,0,0,0]
[null,null,null,null,3,null,null,null,null,0.39296777249010884,0.31437421799208709,0.25149937439366971,0.20119949951493574,0.16095959961194858,0.12876767968955885,0.10301414375164707,0.41205657500658832,0,0,0,0,0,0,0,0,0,0,0,0,0,0,0,0,0,0,0,0,0,0,0,0,0,0,0,0,0,0,0,0,0,0,0,0,0,0,0,0,0,0,0,0]
[null,null,null,null,4,null,null,null,null,null,0.45613773387602796,0.3649101871008224,0.29192814968065789,0.23354251974452633,0.18683401579562109,0.14946721263649687,0.11957377010919751,0.47829508043679003,0,0,0,0,0,0,0,0,0,0,0,0,0,0,0,0,0,0,0,0,0,0,0,0,0,0,0,0,0,0,0,0,0,0,0,0,0,0,0,0,0,0,0]
[null,null,null,null,5,null,null,null,null,null,null,0.43888200752817846,0.35110560602254276,0.28088448481803419,0.22470758785442735,0.17976607028354188,0.14381285622683349,0.1150502849814668,0.4602011399258672,0,0,0,0,0,0,0,0,0,0,0,0,0,0,0,0,0,0,0,0,0,0,0,0,0,0,0,0,0,0,0,0,0,0,0,0,0,0,0,0,0,0]
[null,null,null,null,6,null,null,null,null,null,null,null,0,0,0,0,0,0,0,0,0,0,0,0,0,0,0,0,0,0,0,0,0,0,0,0,0,0,0,0,0,0,0,0,0,0,0,0,0,0,0,0,0,0,0,0,0,0,0,0,0]
[null,null,null,null,7,null,null,null,null,null,null,null,null,0,0,0,0,0,0,0,0,0,0,0,0,0,0,0,0,0,0,0,0,0,0,0,0,0,0,0,0,0,0,0,0,0,0,0,0,0,0,0,0,0,0,0,0,0,0,0,0]
[null,null,null,null,8,null,null,null,null,null,null,null,null,null,0,0,0,0,0,0,0,0,0,0,0,0,0,0,0,0,0,0,0,0,0,0,0,0,0,0,0,0,0,0,0,0,0,0,0,0,0,0,0,0,0,0,0,0,0,0,0]
[null,null,null,null,9,null,null,null,null,null,null,null,null,null,null,0,0,0,0,0,0,0,0,0,0,0,0,0,0,0,0,0,0,0,0,0,0,0,0,0,0,0,0,0,0,0,0,0,0,0,0,0,0,0,0,0,0,0,0,0,0]
[null,null,null,null,10,null,null,null,null,null,null,null,null,null,null,null,0,0,0,0,0,0,0,0,0,0,0,0,0,0,0,0,0,0,0,0,0,0,0,0,0,0,0,0,0,0,0,0,0,0,0,0,0,0,0,0,0,0,0,0,0]
[null,null,{"$f":"Asset22","v":"Office Equipment & Furniture"},null,null,null,0,0.38025677422174348,0.62208049846125979,0.89063217125911676,1.1686434708833213,1.3737967842348358,1.0990374273878685,0.87922994191029469,1.0223664553573069,0.76556360559712866,0.67544320134261926,0.59334536541825678,0.4602011399258672,0,0,0,0,0,0,0,0,0,0,0,0,0,0,0,0,0,0,0,0,0,0,0,0,0,0,0,0,0,0,0,0,0,0,0,0,0,0,0,0,0,0]
[null,{"$f":"C1078","v":"Initial Leases (10 yr life)"},null,"Initial Asset Base",null,null,13.321395421648113,7.1723908335907822,3.8616968148981323,2.0791814941752826,2.4252221764735751,0,0,0,0,0,0,0,0,0,0,0,0,0,0,0,0,0,0,0,0,0,0,0,0,0,0,0,0,0,0,0,0,0,0,0,0,0,0,0,0,0,0,0,0,0,0,0,0,0,0]
[null,null,null,"Capex in year",0]
[null,null,null,null,1,null,null,0,0,0,0,0,0,0,0,0,0,0,0,0,0,0,0,0,0,0,0,0,0,0,0,0,0,0,0,0,0,0,0,0,0,0,0,0,0,0,0,0,0,0,0,0,0,0,0,0,0,0,0,0,0]
[null,null,null,null,2,null,null,null,0,0,0,0,0,0,0,0,0,0,0,0,0,0,0,0,0,0,0,0,0,0,0,0,0,0,0,0,0,0,0,0,0,0,0,0,0,0,0,0,0,0,0,0,0,0,0,0,0,0,0,0,0]
[null,null,null,null,3,null,null,null,null,0,0,0,0,0,0,0,0,0,0,0,0,0,0,0,0,0,0,0,0,0,0,0,0,0,0,0,0,0,0,0,0,0,0,0,0,0,0,0,0,0,0,0,0,0,0,0,0,0,0,0,0]
[null,null,null,null,4,null,null,null,null,null,0,0,0,0,0,0,0,0,0,0,0,0,0,0,0,0,0,0,0,0,0,0,0,0,0,0,0,0,0,0,0,0,0,0,0,0,0,0,0,0,0,0,0,0,0,0,0,0,0,0,0]
[null,null,null,null,5,null,null,null,null,null,null,0,0,0,0,0,0,0,0,0,0,0,0,0,0,0,0,0,0,0,0,0,0,0,0,0,0,0,0,0,0,0,0,0,0,0,0,0,0,0,0,0,0,0,0,0,0,0,0,0,0]
[null,null,null,null,6,null,null,null,null,null,null,null,0,0,0,0,0,0,0,0,0,0,0,0,0,0,0,0,0,0,0,0,0,0,0,0,0,0,0,0,0,0,0,0,0,0,0,0,0,0,0,0,0,0,0,0,0,0,0,0,0]
[null,null,null,null,7,null,null,null,null,null,null,null,null,0,0,0,0,0,0,0,0,0,0,0,0,0,0,0,0,0,0,0,0,0,0,0,0,0,0,0,0,0,0,0,0,0,0,0,0,0,0,0,0,0,0,0,0,0,0,0,0]
[null,null,null,null,8,null,null,null,null,null,null,null,null,null,0,0,0,0,0,0,0,0,0,0,0,0,0,0,0,0,0,0,0,0,0,0,0,0,0,0,0,0,0,0,0,0,0,0,0,0,0,0,0,0,0,0,0,0,0,0,0]
[null,null,null,null,9,null,null,null,null,null,null,null,null,null,null,0,0,0,0,0,0,0,0,0,0,0,0,0,0,0,0,0,0,0,0,0,0,0,0,0,0,0,0,0,0,0,0,0,0,0,0,0,0,0,0,0,0,0,0,0,0]
[null,null,null,null,10,null,null,null,null,null,null,null,null,null,null,null,0,0,0,0,0,0,0,0,0,0,0,0,0,0,0,0,0,0,0,0,0,0,0,0,0,0,0,0,0,0,0,0,0,0,0,0,0,0,0,0,0,0,0,0,0]
[null,null,{"$f":"Asset23","v":"Initial Leases (10 yr life)"},null,null,null,13.321395421648113,7.1723908335907822,3.8616968148981323,2.0791814941752826,2.4252221764735751,0,0,0,0,0,0,0,0,0,0,0,0,0,0,0,0,0,0,0,0,0,0,0,0,0,0,0,0,0,0,0,0,0,0,0,0,0,0,0,0,0,0,0,0,0,0,0,0,0,0]
[null,{"$f":"C1091","v":"Lease Extensions (5yr Life)"},null,"Initial Asset Base",null,null,0,0,0,0,0,0,0,0,0,0,0,0,0,0,0,0,0,0,0,0,0,0,0,0,0,0,0,0,0,0,0,0,0,0,0,0,0,0,0,0,0,0,0,0,0,0,0,0,0,0,0,0,0,0,0]
[null,null,null,"Capex in year",0]
[null,null,null,null,1,null,null,0,0,0,0,0,0,0,0,0,0,0,0,0,0,0,0,0,0,0,0,0,0,0,0,0,0,0,0,0,0,0,0,0,0,0,0,0,0,0,0,0,0,0,0,0,0,0,0,0,0,0,0,0,0]
[null,null,null,null,2,null,null,null,0,0,0,0,0,0,0,0,0,0,0,0,0,0,0,0,0,0,0,0,0,0,0,0,0,0,0,0,0,0,0,0,0,0,0,0,0,0,0,0,0,0,0,0,0,0,0,0,0,0,0,0,0]
[null,null,null,null,3,null,null,null,null,0,0,0,0,0,0,0,0,0,0,0,0,0,0,0,0,0,0,0,0,0,0,0,0,0,0,0,0,0,0,0,0,0,0,0,0,0,0,0,0,0,0,0,0,0,0,0,0,0,0,0,0]
[null,null,null,null,4,null,null,null,null,null,6.578355335150289,3.947013201090174,2.3682079206541036,1.4209247523924617,0.85255485143547682,1.2788322771532155,0,0,0,0,0,0,0,0,0,0,0,0,0,0,0,0,0,0,0,0,0,0,0,0,0,0,0,0,0,0,0,0,0,0,0,0,0,0,0,0,0,0,0,0,0]
[null,null,null,null,5,null,null,null,null,null,null,1.1670033255382388,0.70020199532294325,0.42012119719376595,0.25207271831625955,0.15124363098975577,0.2268654464846338,0,0,0,0,0,0,0,0,0,0,0,0,0,0,0,0,0,0,0,0,0,0,0,0,0,0,0,0,0,0,0,0,0,0,0,0,0,0,0,0,0,0,0,0]
[null,null,null,null,6,null,null,null,null,null,null,null,0,0,0,0,0,0,0,0,0,0,0,0,0,0,0,0,0,0,0,0,0,0,0,0,0,0,0,0,0,0,0,0,0,0,0,0,0,0,0,0,0,0,0,0,0,0,0,0,0]
[null,null,null,null,7,null,null,null,null,null,null,null,null,0,0,0,0,0,0,0,0,0,0,0,0,0,0,0,0,0,0,0,0,0,0,0,0,0,0,0,0,0,0,0,0,0,0,0,0,0,0,0,0,0,0,0,0,0,0,0,0]
[null,null,null,null,8,null,null,null,null,null,null,null,null,null,0,0,0,0,0,0,0,0,0,0,0,0,0,0,0,0,0,0,0,0,0,0,0,0,0,0,0,0,0,0,0,0,0,0,0,0,0,0,0,0,0,0,0,0,0,0,0]
[null,null,null,null,9,null,null,null,null,null,null,null,null,null,null,0,0,0,0,0,0,0,0,0,0,0,0,0,0,0,0,0,0,0,0,0,0,0,0,0,0,0,0,0,0,0,0,0,0,0,0,0,0,0,0,0,0,0,0,0,0]
[null,null,null,null,10,null,null,null,null,null,null,null,null,null,null,null,0,0,0,0,0,0,0,0,0,0,0,0,0,0,0,0,0,0,0,0,0,0,0,0,0,0,0,0,0,0,0,0,0,0,0,0,0,0,0,0,0,0,0,0,0]
[null,null,{"$f":"Asset24","v":"Lease Extensions (5yr Life)"},null,null,null,0,0,0,0,6.578355335150289,5.1140165266284132,3.068409915977047,1.8410459495862277,1.1046275697517363,1.4300759081429713,0.2268654464846338,0,0,0,0,0,0,0,0,0,0,0,0,0,0,0,0,0,0,0,0,0,0,0,0,0,0,0,0,0,0,0,0,0,0,0,0,0,0,0,0,0,0,0,0]
[null,{"$f":"C1104","v":"Land & Easements - combined"},null,"Initial Asset Base",null,null,0,0,0,0,0,0,0,0,0,0,0,0,0,0,0,0,0,0,0,0,0,0,0,0,0,0,0,0,0,0,0,0,0,0,0,0,0,0,0,0,0,0,0,0,0,0,0,0,0,0,0,0,0,0,0]
[null,null,null,"Capex in year",0]
[null,null,null,null,1,null,null,"n/a","n/a","n/a","n/a","n/a","n/a","n/a","n/a","n/a","n/a","n/a","n/a","n/a","n/a","n/a","n/a","n/a","n/a","n/a","n/a","n/a","n/a","n/a","n/a","n/a","n/a","n/a","n/a","n/a","n/a","n/a","n/a","n/a","n/a","n/a","n/a","n/a","n/a","n/a","n/a","n/a","n/a","n/a","n/a","n/a","n/a","n/a","n/a","n/a","n/a","n/a","n/a","n/a","n/a"]
[null,null,null,null,2,null,null,null,"n/a","n/a","n/a","n/a","n/a","n/a","n/a","n/a","n/a","n/a","n/a","n/a","n/a","n/a","n/a","n/a","n/a","n/a","n/a","n/a","n/a","n/a","n/a","n/a","n/a","n/a","n/a","n/a","n/a","n/a","n/a","n/a","n/a","n/a","n/a","n/a","n/a","n/a","n/a","n/a","n/a","n/a","n/a","n/a","n/a","n/a","n/a","n/a","n/a","n/a","n/a","n/a","n/a"]
[null,null,null,null,3,null,null,null,null,"n/a","n/a","n/a","n/a","n/a","n/a","n/a","n/a","n/a","n/a","n/a","n/a","n/a","n/a","n/a","n/a","n/a","n/a","n/a","n/a","n/a","n/a","n/a","n/a","n/a","n/a","n/a","n/a","n/a","n/a","n/a","n/a","n/a","n/a","n/a","n/a","n/a","n/a","n/a","n/a","n/a","n/a","n/a","n/a","n/a","n/a","n/a","n/a","n/a","n/a","n/a","n/a"]
[null,null,null,null,4,null,null,null,null,null,"n/a","n/a","n/a","n/a","n/a","n/a","n/a","n/a","n/a","n/a","n/a","n/a","n/a","n/a","n/a","n/a","n/a","n/a","n/a","n/a","n/a","n/a","n/a","n/a","n/a","n/a","n/a","n/a","n/a","n/a","n/a","n/a","n/a","n/a","n/a","n/a","n/a","n/a","n/a","n/a","n/a","n/a","n/a","n/a","n/a","n/a","n/a","n/a","n/a","n/a","n/a"]
[null,null,null,null,5,null,null,null,null,null,null,"n/a","n/a","n/a","n/a","n/a","n/a","n/a","n/a","n/a","n/a","n/a","n/a","n/a","n/a","n/a","n/a","n/a","n/a","n/a","n/a","n/a","n/a","n/a","n/a","n/a","n/a","n/a","n/a","n/a","n/a","n/a","n/a","n/a","n/a","n/a","n/a","n/a","n/a","n/a","n/a","n/a","n/a","n/a","n/a","n/a","n/a","n/a","n/a","n/a","n/a"]
[null,null,null,null,6,null,null,null,null,null,null,null,"n/a","n/a","n/a","n/a","n/a","n/a","n/a","n/a","n/a","n/a","n/a","n/a","n/a","n/a","n/a","n/a","n/a","n/a","n/a","n/a","n/a","n/a","n/a","n/a","n/a","n/a","n/a","n/a","n/a","n/a","n/a","n/a","n/a","n/a","n/a","n/a","n/a","n/a","n/a","n/a","n/a","n/a","n/a","n/a","n/a","n/a","n/a","n/a","n/a"]
[null,null,null,null,7,null,null,null,null,null,null,null,null,"n/a","n/a","n/a","n/a","n/a","n/a","n/a","n/a","n/a","n/a","n/a","n/a","n/a","n/a","n/a","n/a","n/a","n/a","n/a","n/a","n/a","n/a","n/a","n/a","n/a","n/a","n/a","n/a","n/a","n/a","n/a","n/a","n/a","n/a","n/a","n/a","n/a","n/a","n/a","n/a","n/a","n/a","n/a","n/a","n/a","n/a","n/a","n/a"]
[null,null,null,null,8,null,null,null,null,null,null,null,null,null,"n/a","n/a","n/a","n/a","n/a","n/a","n/a","n/a","n/a","n/a","n/a","n/a","n/a","n/a","n/a","n/a","n/a","n/a","n/a","n/a","n/a","n/a","n/a","n/a","n/a","n/a","n/a","n/a","n/a","n/a","n/a","n/a","n/a","n/a","n/a","n/a","n/a","n/a","n/a","n/a","n/a","n/a","n/a","n/a","n/a","n/a","n/a"]
[null,null,null,null,9,null,null,null,null,null,null,null,null,null,null,"n/a","n/a","n/a","n/a","n/a","n/a","n/a","n/a","n/a","n/a","n/a","n/a","n/a","n/a","n/a","n/a","n/a","n/a","n/a","n/a","n/a","n/a","n/a","n/a","n/a","n/a","n/a","n/a","n/a","n/a","n/a","n/a","n/a","n/a","n/a","n/a","n/a","n/a","n/a","n/a","n/a","n/a","n/a","n/a","n/a","n/a"]
[null,null,null,null,10,null,null,null,null,null,null,null,null,null,null,null,"n/a","n/a","n/a","n/a","n/a","n/a","n/a","n/a","n/a","n/a","n/a","n/a","n/a","n/a","n/a","n/a","n/a","n/a","n/a","n/a","n/a","n/a","n/a","n/a","n/a","n/a","n/a","n/a","n/a","n/a","n/a","n/a","n/a","n/a","n/a","n/a","n/a","n/a","n/a","n/a","n/a","n/a","n/a","n/a","n/a"]
[null,null,{"$f":"Asset25","v":"Land & Easements - combined"},null,null,null,0,0,0,0,0,0,0,0,0,0,0,0,0,0,0,0,0,0,0,0,0,0,0,0,0,0,0,0,0,0,0,0,0,0,0,0,0,0,0,0,0,0,0,0,0,0,0,0,0,0,0,0,0,0,0]
[null,{"$f":"C1117","v":"Communications"},null,"Initial Asset Base",null,null,0.16706924134399997,0.1336553930752,0.10692431446015999,8.5539451568127964E-2,6.8431561254502393E-2,5.4745249003601913E-2,4.3796199202881546E-2,3.5036959362305227E-2,2.802956748984417E-2,2.2423653991875337E-2,1.793892319350027E-2,1.4351138554800233E-2,1.1480910843840194E-2,9.1847286750721575E-3,7.347782940057712E-3,5.8782263520461642E-3,4.7025810816369498E-3,3.7620648653095552E-3,3.0096518922476585E-3,2.4077215137981224E-3,1.9261772110385101E-3,1.5409417688308001E-3,1.2327534150646301E-3,9.8620273205168602E-4,7.8896218564136202E-4,2.2221742484107797E-3,8.0814118447093686E-4,1.2553330968373411E-4,0,0,0,0,0,0,0,0,0,0,0,0,0,0,0,0,0,0,0,0,0,0,0,0,0,0,0]
[null,null,null,"Capex in year",0]
[null,null,null,null,1,null,null,0,0,0,0,0,0,0,0,0,0,0,0,0,0,0,0,0,0,0,0,0,0,0,0,0,0,0,0,0,0,0,0,0,0,0,0,0,0,0,0,0,0,0,0,0,0,0,0,0,0,0,0,0,0]
[null,null,null,null,2,null,null,null,0,0,0,0,0,0,0,0,0,0,0,0,0,0,0,0,0,0,0,0,0,0,0,0,0,0,0,0,0,0,0,0,0,0,0,0,0,0,0,0,0,0,0,0,0,0,0,0,0,0,0,0,0]
[null,null,null,null,3,null,null,null,null,0,0,0,0,0,0,0,0,0,0,0,0,0,0,0,0,0,0,0,0,0,0,0,0,0,0,0,0,0,0,0,0,0,0,0,0,0,0,0,0,0,0,0,0,0,0,0,0,0,0,0,0]
[null,null,null,null,4,null,null,null,null,null,0,0,0,0,0,0,0,0,0,0,0,0,0,0,0,0,0,0,0,0,0,0,0,0,0,0,0,0,0,0,0,0,0,0,0,0,0,0,0,0,0,0,0,0,0,0,0,0,0,0,0]
[null,null,null,null,5,null,null,null,null,null,null,0,0,0,0,0,0,0,0,0,0,0,0,0,0,0,0,0,0,0,0,0,0,0,0,0,0,0,0,0,0,0,0,0,0,0,0,0,0,0,0,0,0,0,0,0,0,0,0,0,0]
[null,null,null,null,6,null,null,null,null,null,null,null,0,0,0,0,0,0,0,0,0,0,0,0,0,0,0,0,0,0,0,0,0,0,0,0,0,0,0,0,0,0,0,0,0,0,0,0,0,0,0,0,0,0,0,0,0,0,0,0,0]
[null,null,null,null,7,null,null,null,null,null,null,null,null,0,0,0,0,0,0,0,0,0,0,0,0,0,0,0,0,0,0,0,0,0,0,0,0,0,0,0,0,0,0,0,0,0,0,0,0,0,0,0,0,0,0,0,0,0,0,0,0]
[null,null,null,null,8,null,null,null,null,null,null,null,null,null,0,0,0,0,0,0,0,0,0,0,0,0,0,0,0,0,0,0,0,0,0,0,0,0,0,0,0,0,0,0,0,0,0,0,0,0,0,0,0,0,0,0,0,0,0,0,0]
[null,null,null,null,9,null,null,null,null,null,null,null,null,null,null,0,0,0,0,0,0,0,0,0,0,0,0,0,0,0,0,0,0,0,0,0,0,0,0,0,0,0,0,0,0,0,0,0,0,0,0,0,0,0,0,0,0,0,0,0,0]
[null,null,null,null,10,null,null,null,null,null,null,null,null,null,null,null,0,0,0,0,0,0,0,0,0,0,0,0,0,0,0,0,0,0,0,0,0,0,0,0,0,0,0,0,0,0,0,0,0,0,0,0,0,0,0,0,0,0,0,0,0]
[null,null,{"$f":"Asset26","v":"Communications"},null,null,null,0.16706924134399997,0.1336553930752,0.10692431446015999,8.5539451568127964E-2,6.8431561254502393E-2,5.4745249003601913E-2,4.3796199202881546E-2,3.5036959362305227E-2,2.802956748984417E-2,2.2423653991875337E-2,1.793892319350027E-2,1.4351138554800233E-2,1.1480910843840194E-2,9.1847286750721575E-3,7.347782940057712E-3,5.8782263520461642E-3,4.7025810816369498E-3,3.7620648653095552E-3,3.0096518922476585E-3,2.4077215137981224E-3,1.9261772110385101E-3,1.5409417688308001E-3,1.2327534150646301E-3,9.8620273205168602E-4,7.8896218564136202E-4,2.2221742484107797E-3,8.0814118447093686E-4,1.2553330968373411E-4,0,0,0,0,0,0,0,0,0,0,0,0,0,0,0,0,0,0,0,0,0,0,0,0,0,0,0]
[null,{"$f":"C1130","v":"In-house software"},null,"Initial Asset Base",null,null,20.1417322,6.1555305999999987,0,0,0,0,0,0,0,0,0,0,0,0,0,0,0,0,0,0,0,0,0,0,0,0,0,0,0,0,0,0,0,0,0,0,0,0,0,0,0,0,0,0,0,0,0,0,0,0,0,0,0,0,0]
[null,null,null,"Capex in year",0]
[null,null,null,null,1,null,null,31.815011344482237,19.089006806689341,11.453404084013606,6.8720424504081628,4.1232254702448987,6.1848382053673419,0,0,0,0,0,0,0,0,0,0,0,0,0,0,0,0,0,0,0,0,0,0,0,0,0,0,0,0,0,0,0,0,0,0,0,0,0,0,0,0,0,0,0,0,0,0,0,0]
[null,null,null,null,2,null,null,null,26.85814488872801,16.114886933236807,9.6689321599420825,5.8013592959652502,3.4808155775791505,5.2212233663687257,0,0,0,0,0,0,0,0,0,0,0,0,0,0,0,0,0,0,0,0,0,0,0,0,0,0,0,0,0,0,0,0,0,0,0,0,0,0,0,0,0,0,0,0,0,0,0]
[null,null,null,null,3,null,null,null,null,20.963978426311801,12.578387055787081,7.5470322334722484,4.5282193400833481,2.7169316040500093,4.0753974060750124,0,0,0,0,0,0,0,0,0,0,0,0,0,0,0,0,0,0,0,0,0,0,0,0,0,0,0,0,0,0,0,0,0,0,0,0,0,0,0,0,0,0,0,0,0,0]
[null,null,null,null,4,null,null,null,null,null,16.822372838425007,10.093423703055002,6.0560542218330013,3.6336325330997994,2.1801795198598799,3.2702692797898223,0,0,0,0,0,0,0,0,0,0,0,0,0,0,0,0,0,0,0,0,0,0,0,0,0,0,0,0,0,0,0,0,0,0,0,0,0,0,0,0,0,0,0,0,0]
[null,null,null,null,5,null,null,null,null,null,null,21.712993477712587,13.027796086627554,7.8166776519765309,4.6900065911859175,2.8140039547115494,4.221005932067321,0,0,0,0,0,0,0,0,0,0,0,0,0,0,0,0,0,0,0,0,0,0,0,0,0,0,0,0,0,0,0,0,0,0,0,0,0,0,0,0,0,0,0,0]
[null,null,null,null,6,null,null,null,null,null,null,null,0,0,0,0,0,0,0,0,0,0,0,0,0,0,0,0,0,0,0,0,0,0,0,0,0,0,0,0,0,0,0,0,0,0,0,0,0,0,0,0,0,0,0,0,0,0,0,0,0]
[null,null,null,null,7,null,null,null,null,null,null,null,null,0,0,0,0,0,0,0,0,0,0,0,0,0,0,0,0,0,0,0,0,0,0,0,0,0,0,0,0,0,0,0,0,0,0,0,0,0,0,0,0,0,0,0,0,0,0,0,0]
[null,null,null,null,8,null,null,null,null,null,null,null,null,null,0,0,0,0,0,0,0,0,0,0,0,0,0,0,0,0,0,0,0,0,0,0,0,0,0,0,0,0,0,0,0,0,0,0,0,0,0,0,0,0,0,0,0,0,0,0,0]
[null,null,null,null,9,null,null,null,null,null,null,null,null,null,null,0,0,0,0,0,0,0,0,0,0,0,0,0,0,0,0,0,0,0,0,0,0,0,0,0,0,0,0,0,0,0,0,0,0,0,0,0,0,0,0,0,0,0,0,0,0]
[null,null,null,null,10,null,null,null,null,null,null,null,null,null,null,null,0,0,0,0,0,0,0,0,0,0,0,0,0,0,0,0,0,0,0,0,0,0,0,0,0,0,0,0,0,0,0,0,0,0,0,0,0,0,0,0,0,0,0,0,0]
[null,null,{"$f":"Asset27","v":"In-house software"},null,null,null,20.1417322,37.970541944482235,45.947151695417347,48.532269443562214,45.941734504562334,49.278034180449986,33.277723431490394,19.388465155495066,10.945583517120809,6.0842732345013717,4.221005932067321,0,0,0,0,0,0,0,0,0,0,0,0,0,0,0,0,0,0,0,0,0,0,0,0,0,0,0,0,0,0,0,0,0,0,0,0,0,0,0,0,0,0,0,0]
[null,{"$f":"C1143","v":"IT Systems"},null,"Initial Asset Base",null,null,0.63893622527999971,0.35546900543999982,0.53320350815999973,0,0,0,0,0,0,0,0,0,0,0,0,0,0,0,0,0,0,0,0,0,0,0,0,0,0,0,0,0,0,0,0,0,0,0,0,0,0,0,0,0,0,0,0,0,0,0,0,0,0,0,0]
[null,null,null,"Capex in year",0]
[null,null,null,null,1,null,null,1.3515902502541794,0.8109541501525076,0.48657249009150461,0.29194349405490277,0.17516609643294176,0.26274914464941279,0,0,0,0,0,0,0,0,0,0,0,0,0,0,0,0,0,0,0,0,0,0,0,0,0,0,0,0,0,0,0,0,0,0,0,0,0,0,0,0,0,0,0,0,0,0,0,0]
[null,null,null,null,2,null,null,null,1.3138945753721469,0.78833674522328812,0.47300204713397281,0.28380122828038362,0.17028073696823026,0.2554211054523452,0,0,0,0,0,0,0,0,0,0,0,0,0,0,0,0,0,0,0,0,0,0,0,0,0,0,0,0,0,0,0,0,0,0,0,0,0,0,0,0,0,0,0,0,0,0,0]
[null,null,null,null,3,null,null,null,null,1.048491904389294,0.62909514263357635,0.37745708558014573,0.22647425134808741,0.13588455080885248,0.20382682621327852,0,0,0,0,0,0,0,0,0,0,0,0,0,0,0,0,0,0,0,0,0,0,0,0,0,0,0,0,0,0,0,0,0,0,0,0,0,0,0,0,0,0,0,0,0,0]
[null,null,null,null,4,null,null,null,null,null,0.81341888957652153,0.48805133374591292,0.29283080024754771,0.17569848014852862,0.10541908808911718,0.15812863213367567,0,0,0,0,0,0,0,0,0,0,0,0,0,0,0,0,0,0,0,0,0,0,0,0,0,0,0,0,0,0,0,0,0,0,0,0,0,0,0,0,0,0,0,0,0]
[null,null,null,null,5,null,null,null,null,null,null,1.0505525964243818,0.63033155785462913,0.37819893471277743,0.22691936082766642,0.13615161649659982,0.20422742474489963,0,0,0,0,0,0,0,0,0,0,0,0,0,0,0,0,0,0,0,0,0,0,0,0,0,0,0,0,0,0,0,0,0,0,0,0,0,0,0,0,0,0,0,0]
[null,null,null,null,6,null,null,null,null,null,null,null,0,0,0,0,0,0,0,0,0,0,0,0,0,0,0,0,0,0,0,0,0,0,0,0,0,0,0,0,0,0,0,0,0,0,0,0,0,0,0,0,0,0,0,0,0,0,0,0,0]
[null,null,null,null,7,null,null,null,null,null,null,null,null,0,0,0,0,0,0,0,0,0,0,0,0,0,0,0,0,0,0,0,0,0,0,0,0,0,0,0,0,0,0,0,0,0,0,0,0,0,0,0,0,0,0,0,0,0,0,0,0]
[null,null,null,null,8,null,null,null,null,null,null,null,null,null,0,0,0,0,0,0,0,0,0,0,0,0,0,0,0,0,0,0,0,0,0,0,0,0,0,0,0,0,0,0,0,0,0,0,0,0,0,0,0,0,0,0,0,0,0,0,0]
[null,null,null,null,9,null,null,null,null,null,null,null,null,null,null,0,0,0,0,0,0,0,0,0,0,0,0,0,0,0,0,0,0,0,0,0,0,0,0,0,0,0,0,0,0,0,0,0,0,0,0,0,0,0,0,0,0,0,0,0,0]
[null,null,null,null,10,null,null,null,null,null,null,null,null,null,null,null,0,0,0,0,0,0,0,0,0,0,0,0,0,0,0,0,0,0,0,0,0,0,0,0,0,0,0,0,0,0,0,0,0,0,0,0,0,0,0,0,0,0,0,0,0]
[null,null,{"$f":"Asset28","v":"IT Systems"},null,null,null,0.63893622527999971,1.7070592556941793,2.6580522336846544,2.3234011397040866,2.2074595733989737,2.375028340463766,1.5826664910679074,0.94520307112250368,0.53616527513006207,0.29428024863027546,0.20422742474489963,0,0,0,0,0,0,0,0,0,0,0,0,0,0,0,0,0,0,0,0,0,0,0,0,0,0,0,0,0,0,0,0,0,0,0,0,0,0,0,0,0,0,0,0]
[null,{"$f":"C1156","v":"Legacy ICT Assets"},null,"Initial Asset Base",null,null,0,0,0,0,0,0,0,0,0,0,0,0,0,0,0,0,0,0,0,0,0,0,0,0,0,0,0,0,0,0,0,0,0,0,0,0,0,0,0,0,0,0,0,0,0,0,0,0,0,0,0,0,0,0,0]
[null,null,null,"Capex in year",0]
[null,null,null,null,1,null,null,0,0,0,0,0,0,0,0,0,0,0,0,0,0,0,0,0,0,0,0,0,0,0,0,0,0,0,0,0,0,0,0,0,0,0,0,0,0,0,0,0,0,0,0,0,0,0,0,0,0,0,0,0,0]
[null,null,null,null,2,null,null,null,0,0,0,0,0,0,0,0,0,0,0,0,0,0,0,0,0,0,0,0,0,0,0,0,0,0,0,0,0,0,0,0,0,0,0,0,0,0,0,0,0,0,0,0,0,0,0,0,0,0,0,0,0]
[null,null,null,null,3,null,null,null,null,0,0,0,0,0,0,0,0,0,0,0,0,0,0,0,0,0,0,0,0,0,0,0,0,0,0,0,0,0,0,0,0,0,0,0,0,0,0,0,0,0,0,0,0,0,0,0,0,0,0,0,0]
[null,null,null,null,4,null,null,null,null,null,0,0,0,0,0,0,0,0,0,0,0,0,0,0,0,0,0,0,0,0,0,0,0,0,0,0,0,0,0,0,0,0,0,0,0,0,0,0,0,0,0,0,0,0,0,0,0,0,0,0,0]
[null,null,null,null,5,null,null,null,null,null,null,0,0,0,0,0,0,0,0,0,0,0,0,0,0,0,0,0,0,0,0,0,0,0,0,0,0,0,0,0,0,0,0,0,0,0,0,0,0,0,0,0,0,0,0,0,0,0,0,0,0]
[null,null,null,null,6,null,null,null,null,null,null,null,0,0,0,0,0,0,0,0,0,0,0,0,0,0,0,0,0,0,0,0,0,0,0,0,0,0,0,0,0,0,0,0,0,0,0,0,0,0,0,0,0,0,0,0,0,0,0,0,0]
[null,null,null,null,7,null,null,null,null,null,null,null,null,0,0,0,0,0,0,0,0,0,0,0,0,0,0,0,0,0,0,0,0,0,0,0,0,0,0,0,0,0,0,0,0,0,0,0,0,0,0,0,0,0,0,0,0,0,0,0,0]
[null,null,null,null,8,null,null,null,null,null,null,null,null,null,0,0,0,0,0,0,0,0,0,0,0,0,0,0,0,0,0,0,0,0,0,0,0,0,0,0,0,0,0,0,0,0,0,0,0,0,0,0,0,0,0,0,0,0,0,0,0]
[null,null,null,null,9,null,null,null,null,null,null,null,null,null,null,0,0,0,0,0,0,0,0,0,0,0,0,0,0,0,0,0,0,0,0,0,0,0,0,0,0,0,0,0,0,0,0,0,0,0,0,0,0,0,0,0,0,0,0,0,0]
[null,null,null,null,10,null,null,null,null,null,null,null,null,null,null,null,0,0,0,0,0,0,0,0,0,0,0,0,0,0,0,0,0,0,0,0,0,0,0,0,0,0,0,0,0,0,0,0,0,0,0,0,0,0,0,0,0,0,0,0,0]
[null,null,{"$f":"Asset29","v":"Legacy ICT Assets"},null,null,null,0,0,0,0,0,0,0,0,0,0,0,0,0,0,0,0,0,0,0,0,0,0,0,0,0,0,0,0,0,0,0,0,0,0,0,0,0,0,0,0,0,0,0,0,0,0,0,0,0,0,0,0,0,0,0]
[null,{"$f":"C1169","v":"Buildings - capital works"},null,"Initial Asset Base",null,null,1.8472266750000002,1.8472266750000002,1.8472266750000002,1.8472266750000002,1.8472266750000002,1.8472266750000002,1.8472266750000002,1.8472266750000002,1.8472266750000002,1.8472266750000002,1.8472266750000002,1.8472266750000002,1.8472266750000002,1.8472266750000002,1.8472266750000002,1.8472266750000002,1.8472266750000002,1.8472266750000002,1.8472266750000002,1.8472266750000002,1.8472266750000002,1.8472266750000002,1.8472266750000002,1.8472266750000002,1.8472266750000002,1.8472266750000002,1.8472266750000002,1.8472266750000002,1.8472266750000002,1.8472266750000002,1.8472266750000002,1.8472266750000002,1.8472266750000002,1.8472266750000002,1.8472266750000166,1.1466906000000086,0.75232552500000338,0,0,0,0,0,0,0,0,0,0,0,0,0,0,0,0,0,0]
[null,null,null,"Capex in year",0]
[null,null,null,null,1,null,null,0,0,0,0,0,0,0,0,0,0,0,0,0,0,0,0,0,0,0,0,0,0,0,0,0,0,0,0,0,0,0,0,0,0,0,0,0,0,0,0,0,0,0,0,0,0,0,0,0,0,0,0,0,0]
[null,null,null,null,2,null,null,null,0,0,0,0,0,0,0,0,0,0,0,0,0,0,0,0,0,0,0,0,0,0,0,0,0,0,0,0,0,0,0,0,0,0,0,0,0,0,0,0,0,0,0,0,0,0,0,0,0,0,0,0,0]
[null,null,null,null,3,null,null,null,null,0,0,0,0,0,0,0,0,0,0,0,0,0,0,0,0,0,0,0,0,0,0,0,0,0,0,0,0,0,0,0,0,0,0,0,0,0,0,0,0,0,0,0,0,0,0,0,0,0,0,0,0]
[null,null,null,null,4,null,null,null,null,null,0,0,0,0,0,0,0,0,0,0,0,0,0,0,0,0,0,0,0,0,0,0,0,0,0,0,0,0,0,0,0,0,0,0,0,0,0,0,0,0,0,0,0,0,0,0,0,0,0,0,0]
[null,null,null,null,5,null,null,null,null,null,null,0,0,0,0,0,0,0,0,0,0,0,0,0,0,0,0,0,0,0,0,0,0,0,0,0,0,0,0,0,0,0,0,0,0,0,0,0,0,0,0,0,0,0,0,0,0,0,0,0,0]
[null,null,null,null,6,null,null,null,null,null,null,null,0,0,0,0,0,0,0,0,0,0,0,0,0,0,0,0,0,0,0,0,0,0,0,0,0,0,0,0,0,0,0,0,0,0,0,0,0,0,0,0,0,0,0,0,0,0,0,0,0]
[null,null,null,null,7,null,null,null,null,null,null,null,null,0,0,0,0,0,0,0,0,0,0,0,0,0,0,0,0,0,0,0,0,0,0,0,0,0,0,0,0,0,0,0,0,0,0,0,0,0,0,0,0,0,0,0,0,0,0,0,0]
[null,null,null,null,8,null,null,null,null,null,null,null,null,null,0,0,0,0,0,0,0,0,0,0,0,0,0,0,0,0,0,0,0,0,0,0,0,0,0,0,0,0,0,0,0,0,0,0,0,0,0,0,0,0,0,0,0,0,0,0,0]
[null,null,null,null,9,null,null,null,null,null,null,null,null,null,null,0,0,0,0,0,0,0,0,0,0,0,0,0,0,0,0,0,0,0,0,0,0,0,0,0,0,0,0,0,0,0,0,0,0,0,0,0,0,0,0,0,0,0,0,0,0]
[null,null,null,null,10,null,null,null,null,null,null,null,null,null,null,null,0,0,0,0,0,0,0,0,0,0,0,0,0,0,0,0,0,0,0,0,0,0,0,0,0,0,0,0,0,0,0,0,0,0,0,0,0,0,0,0,0,0,0,0,0]
[null,null,{"$f":"Asset30","v":"Buildings - capital works"},null,null,null,1.8472266750000002,1.8472266750000002,1.8472266750000002,1.8472266750000002,1.8472266750000002,1.8472266750000002,1.8472266750000002,1.8472266750000002,1.8472266750000002,1.8472266750000002,1.8472266750000002,1.8472266750000002,1.8472266750000002,1.8472266750000002,1.8472266750000002,1.8472266750000002,1.8472266750000002,1.8472266750000002,1.8472266750000002,1.8472266750000002,1.8472266750000002,1.8472266750000002,1.8472266750000002,1.8472266750000002,1.8472266750000002,1.8472266750000002,1.8472266750000002,1.8472266750000002,1.8472266750000002,1.8472266750000002,1.8472266750000002,1.8472266750000002,1.8472266750000002,1.8472266750000002,1.8472266750000166,1.1466906000000086,0.75232552500000338,0,0,0,0,0,0,0,0,0,0,0,0,0,0,0,0,0,0]
[null,{"$f":"C1182","v":0},null,"Initial Asset Base",null,null,0,0,0,0,0,0,0,0,0,0,0,0,0,0,0,0,0,0,0,0,0,0,0,0,0,0,0,0,0,0,0,0,0,0,0,0,0,0,0,0,0,0,0,0,0,0,0,0,0,0,0,0,0,0,0]
[null,null,null,"Capex in year",0]
[null,null,null,null,1,null,null,0,0,0,0,0,0,0,0,0,0,0,0,0,0,0,0,0,0,0,0,0,0,0,0,0,0,0,0,0,0,0,0,0,0,0,0,0,0,0,0,0,0,0,0,0,0,0,0,0,0,0,0,0,0]
[null,null,null,null,2,null,null,null,0,0,0,0,0,0,0,0,0,0,0,0,0,0,0,0,0,0,0,0,0,0,0,0,0,0,0,0,0,0,0,0,0,0,0,0,0,0,0,0,0,0,0,0,0,0,0,0,0,0,0,0,0]
[null,null,null,null,3,null,null,null,null,0,0,0,0,0,0,0,0,0,0,0,0,0,0,0,0,0,0,0,0,0,0,0,0,0,0,0,0,0,0,0,0,0,0,0,0,0,0,0,0,0,0,0,0,0,0,0,0,0,0,0,0]
[null,null,null,null,4,null,null,null,null,null,0,0,0,0,0,0,0,0,0,0,0,0,0,0,0,0,0,0,0,0,0,0,0,0,0,0,0,0,0,0,0,0,0,0,0,0,0,0,0,0,0,0,0,0,0,0,0,0,0,0,0]
[null,null,null,null,5,null,null,null,null,null,null,0,0,0,0,0,0,0,0,0,0,0,0,0,0,0,0,0,0,0,0,0,0,0,0,0,0,0,0,0,0,0,0,0,0,0,0,0,0,0,0,0,0,0,0,0,0,0,0,0,0]
[null,null,null,null,6,null,null,null,null,null,null,null,0,0,0,0,0,0,0,0,0,0,0,0,0,0,0,0,0,0,0,0,0,0,0,0,0,0,0,0,0,0,0,0,0,0,0,0,0,0,0,0,0,0,0,0,0,0,0,0,0]
[null,null,null,null,7,null,null,null,null,null,null,null,null,0,0,0,0,0,0,0,0,0,0,0,0,0,0,0,0,0,0,0,0,0,0,0,0,0,0,0,0,0,0,0,0,0,0,0,0,0,0,0,0,0,0,0,0,0,0,0,0]
[null,null,null,null,8,null,null,null,null,null,null,null,null,null,0,0,0,0,0,0,0,0,0,0,0,0,0,0,0,0,0,0,0,0,0,0,0,0,0,0,0,0,0,0,0,0,0,0,0,0,0,0,0,0,0,0,0,0,0,0,0]
[null,null,null,null,9,null,null,null,null,null,null,null,null,null,null,0,0,0,0,0,0,0,0,0,0,0,0,0,0,0,0,0,0,0,0,0,0,0,0,0,0,0,0,0,0,0,0,0,0,0,0,0,0,0,0,0,0,0,0,0,0]
[null,null,null,null,10,null,null,null,null,null,null,null,null,null,null,null,0,0,0,0,0,0,0,0,0,0,0,0,0,0,0,0,0,0,0,0,0,0,0,0,0,0,0,0,0,0,0,0,0,0,0,0,0,0,0,0,0,0,0,0,0]
[null,null,{"$f":"Asset31","v":0},null,null,null,0,0,0,0,0,0,0,0,0,0,0,0,0,0,0,0,0,0,0,0,0,0,0,0,0,0,0,0,0,0,0,0,0,0,0,0,0,0,0,0,0,0,0,0,0,0,0,0,0,0,0,0,0,0,0]
[null,{"$f":"C1195","v":0},null,"Initial Asset Base",null,null,0,0,0,0,0,0,0,0,0,0,0,0,0,0,0,0,0,0,0,0,0,0,0,0,0,0,0,0,0,0,0,0,0,0,0,0,0,0,0,0,0,0,0,0,0,0,0,0,0,0,0,0,0,0,0]
[null,null,null,"Capex in year",0]
[null,null,null,null,1,null,null,0,0,0,0,0,0,0,0,0,0,0,0,0,0,0,0,0,0,0,0,0,0,0,0,0,0,0,0,0,0,0,0,0,0,0,0,0,0,0,0,0,0,0,0,0,0,0,0,0,0,0,0,0,0]
[null,null,null,null,2,null,null,null,0,0,0,0,0,0,0,0,0,0,0,0,0,0,0,0,0,0,0,0,0,0,0,0,0,0,0,0,0,0,0,0,0,0,0,0,0,0,0,0,0,0,0,0,0,0,0,0,0,0,0,0,0]
[null,null,null,null,3,null,null,null,null,0,0,0,0,0,0,0,0,0,0,0,0,0,0,0,0,0,0,0,0,0,0,0,0,0,0,0,0,0,0,0,0,0,0,0,0,0,0,0,0,0,0,0,0,0,0,0,0,0,0,0,0]
[null,null,null,null,4,null,null,null,null,null,0,0,0,0,0,0,0,0,0,0,0,0,0,0,0,0,0,0,0,0,0,0,0,0,0,0,0,0,0,0,0,0,0,0,0,0,0,0,0,0,0,0,0,0,0,0,0,0,0,0,0]
[null,null,null,null,5,null,null,null,null,null,null,0,0,0,0,0,0,0,0,0,0,0,0,0,0,0,0,0,0,0,0,0,0,0,0,0,0,0,0,0,0,0,0,0,0,0,0,0,0,0,0,0,0,0,0,0,0,0,0,0,0]
[null,null,null,null,6,null,null,null,null,null,null,null,0,0,0,0,0,0,0,0,0,0,0,0,0,0,0,0,0,0,0,0,0,0,0,0,0,0,0,0,0,0,0,0,0,0,0,0,0,0,0,0,0,0,0,0,0,0,0,0,0]
[null,null,null,null,7,null,null,null,null,null,null,null,null,0,0,0,0,0,0,0,0,0,0,0,0,0,0,0,0,0,0,0,0,0,0,0,0,0,0,0,0,0,0,0,0,0,0,0,0,0,0,0,0,0,0,0,0,0,0,0,0]
[null,null,null,null,8,null,null,null,null,null,null,null,null,null,0,0,0,0,0,0,0,0,0,0,0,0,0,0,0,0,0,0,0,0,0,0,0,0,0,0,0,0,0,0,0,0,0,0,0,0,0,0,0,0,0,0,0,0,0,0,0]
[null,null,null,null,9,null,null,null,null,null,null,null,null,null,null,0,0,0,0,0,0,0,0,0,0,0,0,0,0,0,0,0,0,0,0,0,0,0,0,0,0,0,0,0,0,0,0,0,0,0,0,0,0,0,0,0,0,0,0,0,0]
[null,null,null,null,10,null,null,null,null,null,null,null,null,null,null,null,0,0,0,0,0,0,0,0,0,0,0,0,0,0,0,0,0,0,0,0,0,0,0,0,0,0,0,0,0,0,0,0,0,0,0,0,0,0,0,0,0,0,0,0,0]
[null,null,{"$f":"Asset32","v":0},null,null,null,0,0,0,0,0,0,0,0,0,0,0,0,0,0,0,0,0,0,0,0,0,0,0,0,0,0,0,0,0,0,0,0,0,0,0,0,0,0,0,0,0,0,0,0,0,0,0,0,0,0,0,0,0,0,0]
[null,{"$f":"C1208","v":0},null,"Initial Asset Base",null,null,0,0,0,0,0,0,0,0,0,0,0,0,0,0,0,0,0,0,0,0,0,0,0,0,0,0,0,0,0,0,0,0,0,0,0,0,0,0,0,0,0,0,0,0,0,0,0,0,0,0,0,0,0,0,0]
[null,null,null,"Capex in year",0]
[null,null,null,null,1,null,null,0,0,0,0,0,0,0,0,0,0,0,0,0,0,0,0,0,0,0,0,0,0,0,0,0,0,0,0,0,0,0,0,0,0,0,0,0,0,0,0,0,0,0,0,0,0,0,0,0,0,0,0,0,0]
[null,null,null,null,2,null,null,null,0,0,0,0,0,0,0,0,0,0,0,0,0,0,0,0,0,0,0,0,0,0,0,0,0,0,0,0,0,0,0,0,0,0,0,0,0,0,0,0,0,0,0,0,0,0,0,0,0,0,0,0,0]
[null,null,null,null,3,null,null,null,null,0,0,0,0,0,0,0,0,0,0,0,0,0,0,0,0,0,0,0,0,0,0,0,0,0,0,0,0,0,0,0,0,0,0,0,0,0,0,0,0,0,0,0,0,0,0,0,0,0,0,0,0]
[null,null,null,null,4,null,null,null,null,null,0,0,0,0,0,0,0,0,0,0,0,0,0,0,0,0,0,0,0,0,0,0,0,0,0,0,0,0,0,0,0,0,0,0,0,0,0,0,0,0,0,0,0,0,0,0,0,0,0,0,0]
[null,null,null,null,5,null,null,null,null,null,null,0,0,0,0,0,0,0,0,0,0,0,0,0,0,0,0,0,0,0,0,0,0,0,0,0,0,0,0,0,0,0,0,0,0,0,0,0,0,0,0,0,0,0,0,0,0,0,0,0,0]
[null,null,null,null,6,null,null,null,null,null,null,null,0,0,0,0,0,0,0,0,0,0,0,0,0,0,0,0,0,0,0,0,0,0,0,0,0,0,0,0,0,0,0,0,0,0,0,0,0,0,0,0,0,0,0,0,0,0,0,0,0]
[null,null,null,null,7,null,null,null,null,null,null,null,null,0,0,0,0,0,0,0,0,0,0,0,0,0,0,0,0,0,0,0,0,0,0,0,0,0,0,0,0,0,0,0,0,0,0,0,0,0,0,0,0,0,0,0,0,0,0,0,0]
[null,null,null,null,8,null,null,null,null,null,null,null,null,null,0,0,0,0,0,0,0,0,0,0,0,0,0,0,0,0,0,0,0,0,0,0,0,0,0,0,0,0,0,0,0,0,0,0,0,0,0,0,0,0,0,0,0,0,0,0,0]
[null,null,null,null,9,null,null,null,null,null,null,null,null,null,null,0,0,0,0,0,0,0,0,0,0,0,0,0,0,0,0,0,0,0,0,0,0,0,0,0,0,0,0,0,0,0,0,0,0,0,0,0,0,0,0,0,0,0,0,0,0]
[null,null,null,null,10,null,null,null,null,null,null,null,null,null,null,null,0,0,0,0,0,0,0,0,0,0,0,0,0,0,0,0,0,0,0,0,0,0,0,0,0,0,0,0,0,0,0,0,0,0,0,0,0,0,0,0,0,0,0,0,0]
[null,null,{"$f":"Asset33","v":0},null,null,null,0,0,0,0,0,0,0,0,0,0,0,0,0,0,0,0,0,0,0,0,0,0,0,0,0,0,0,0,0,0,0,0,0,0,0,0,0,0,0,0,0,0,0,0,0,0,0,0,0,0,0,0,0,0,0]
[null,{"$f":"C1221","v":0},null,"Initial Asset Base",null,null,0,0,0,0,0,0,0,0,0,0,0,0,0,0,0,0,0,0,0,0,0,0,0,0,0,0,0,0,0,0,0,0,0,0,0,0,0,0,0,0,0,0,0,0,0,0,0,0,0,0,0,0,0,0,0]
[null,null,null,"Capex in year",0]
[null,null,null,null,1,null,null,0,0,0,0,0,0,0,0,0,0,0,0,0,0,0,0,0,0,0,0,0,0,0,0,0,0,0,0,0,0,0,0,0,0,0,0,0,0,0,0,0,0,0,0,0,0,0,0,0,0,0,0,0,0]
[null,null,null,null,2,null,null,null,0,0,0,0,0,0,0,0,0,0,0,0,0,0,0,0,0,0,0,0,0,0,0,0,0,0,0,0,0,0,0,0,0,0,0,0,0,0,0,0,0,0,0,0,0,0,0,0,0,0,0,0,0]
[null,null,null,null,3,null,null,null,null,0,0,0,0,0,0,0,0,0,0,0,0,0,0,0,0,0,0,0,0,0,0,0,0,0,0,0,0,0,0,0,0,0,0,0,0,0,0,0,0,0,0,0,0,0,0,0,0,0,0,0,0]
[null,null,null,null,4,null,null,null,null,null,0,0,0,0,0,0,0,0,0,0,0,0,0,0,0,0,0,0,0,0,0,0,0,0,0,0,0,0,0,0,0,0,0,0,0,0,0,0,0,0,0,0,0,0,0,0,0,0,0,0,0]
[null,null,null,null,5,null,null,null,null,null,null,0,0,0,0,0,0,0,0,0,0,0,0,0,0,0,0,0,0,0,0,0,0,0,0,0,0,0,0,0,0,0,0,0,0,0,0,0,0,0,0,0,0,0,0,0,0,0,0,0,0]
[null,null,null,null,6,null,null,null,null,null,null,null,0,0,0,0,0,0,0,0,0,0,0,0,0,0,0,0,0,0,0,0,0,0,0,0,0,0,0,0,0,0,0,0,0,0,0,0,0,0,0,0,0,0,0,0,0,0,0,0,0]
[null,null,null,null,7,null,null,null,null,null,null,null,null,0,0,0,0,0,0,0,0,0,0,0,0,0,0,0,0,0,0,0,0,0,0,0,0,0,0,0,0,0,0,0,0,0,0,0,0,0,0,0,0,0,0,0,0,0,0,0,0]
[null,null,null,null,8,null,null,null,null,null,null,null,null,null,0,0,0,0,0,0,0,0,0,0,0,0,0,0,0,0,0,0,0,0,0,0,0,0,0,0,0,0,0,0,0,0,0,0,0,0,0,0,0,0,0,0,0,0,0,0,0]
[null,null,null,null,9,null,null,null,null,null,null,null,null,null,null,0,0,0,0,0,0,0,0,0,0,0,0,0,0,0,0,0,0,0,0,0,0,0,0,0,0,0,0,0,0,0,0,0,0,0,0,0,0,0,0,0,0,0,0,0,0]
[null,null,null,null,10,null,null,null,null,null,null,null,null,null,null,null,0,0,0,0,0,0,0,0,0,0,0,0,0,0,0,0,0,0,0,0,0,0,0,0,0,0,0,0,0,0,0,0,0,0,0,0,0,0,0,0,0,0,0,0,0]
[null,null,{"$f":"Asset34","v":0},null,null,null,0,0,0,0,0,0,0,0,0,0,0,0,0,0,0,0,0,0,0,0,0,0,0,0,0,0,0,0,0,0,0,0,0,0,0,0,0,0,0,0,0,0,0,0,0,0,0,0,0,0,0,0,0,0,0]
[null,{"$f":"C1234","v":0},null,"Initial Asset Base",null,null,0,0,0,0,0,0,0,0,0,0,0,0,0,0,0,0,0,0,0,0,0,0,0,0,0,0,0,0,0,0,0,0,0,0,0,0,0,0,0,0,0,0,0,0,0,0,0,0,0,0,0,0,0,0,0]
[null,null,null,"Capex in year",0]
[null,null,null,null,1,null,null,0,0,0,0,0,0,0,0,0,0,0,0,0,0,0,0,0,0,0,0,0,0,0,0,0,0,0,0,0,0,0,0,0,0,0,0,0,0,0,0,0,0,0,0,0,0,0,0,0,0,0,0,0,0]
[null,null,null,null,2,null,null,null,0,0,0,0,0,0,0,0,0,0,0,0,0,0,0,0,0,0,0,0,0,0,0,0,0,0,0,0,0,0,0,0,0,0,0,0,0,0,0,0,0,0,0,0,0,0,0,0,0,0,0,0,0]
[null,null,null,null,3,null,null,null,null,0,0,0,0,0,0,0,0,0,0,0,0,0,0,0,0,0,0,0,0,0,0,0,0,0,0,0,0,0,0,0,0,0,0,0,0,0,0,0,0,0,0,0,0,0,0,0,0,0,0,0,0]
[null,null,null,null,4,null,null,null,null,null,0,0,0,0,0,0,0,0,0,0,0,0,0,0,0,0,0,0,0,0,0,0,0,0,0,0,0,0,0,0,0,0,0,0,0,0,0,0,0,0,0,0,0,0,0,0,0,0,0,0,0]
[null,null,null,null,5,null,null,null,null,null,null,0,0,0,0,0,0,0,0,0,0,0,0,0,0,0,0,0,0,0,0,0,0,0,0,0,0,0,0,0,0,0,0,0,0,0,0,0,0,0,0,0,0,0,0,0,0,0,0,0,0]
[null,null,null,null,6,null,null,null,null,null,null,null,0,0,0,0,0,0,0,0,0,0,0,0,0,0,0,0,0,0,0,0,0,0,0,0,0,0,0,0,0,0,0,0,0,0,0,0,0,0,0,0,0,0,0,0,0,0,0,0,0]
[null,null,null,null,7,null,null,null,null,null,null,null,null,0,0,0,0,0,0,0,0,0,0,0,0,0,0,0,0,0,0,0,0,0,0,0,0,0,0,0,0,0,0,0,0,0,0,0,0,0,0,0,0,0,0,0,0,0,0,0,0]
[null,null,null,null,8,null,null,null,null,null,null,null,null,null,0,0,0,0,0,0,0,0,0,0,0,0,0,0,0,0,0,0,0,0,0,0,0,0,0,0,0,0,0,0,0,0,0,0,0,0,0,0,0,0,0,0,0,0,0,0,0]
[null,null,null,null,9,null,null,null,null,null,null,null,null,null,null,0,0,0,0,0,0,0,0,0,0,0,0,0,0,0,0,0,0,0,0,0,0,0,0,0,0,0,0,0,0,0,0,0,0,0,0,0,0,0,0,0,0,0,0,0,0]
[null,null,null,null,10,null,null,null,null,null,null,null,null,null,null,null,0,0,0,0,0,0,0,0,0,0,0,0,0,0,0,0,0,0,0,0,0,0,0,0,0,0,0,0,0,0,0,0,0,0,0,0,0,0,0,0,0,0,0,0,0]
[null,null,{"$f":"Asset35","v":0},null,null,null,0,0,0,0,0,0,0,0,0,0,0,0,0,0,0,0,0,0,0,0,0,0,0,0,0,0,0,0,0,0,0,0,0,0,0,0,0,0,0,0,0,0,0,0,0,0,0,0,0,0,0,0,0,0,0]
[null,{"$f":"C1247","v":0},null,"Initial Asset Base",null,null,0,0,0,0,0,0,0,0,0,0,0,0,0,0,0,0,0,0,0,0,0,0,0,0,0,0,0,0,0,0,0,0,0,0,0,0,0,0,0,0,0,0,0,0,0,0,0,0,0,0,0,0,0,0,0]
[null,null,null,"Capex in year",0]
[null,null,null,null,1,null,null,0,0,0,0,0,0,0,0,0,0,0,0,0,0,0,0,0,0,0,0,0,0,0,0,0,0,0,0,0,0,0,0,0,0,0,0,0,0,0,0,0,0,0,0,0,0,0,0,0,0,0,0,0,0]
[null,null,null,null,2,null,null,null,0,0,0,0,0,0,0,0,0,0,0,0,0,0,0,0,0,0,0,0,0,0,0,0,0,0,0,0,0,0,0,0,0,0,0,0,0,0,0,0,0,0,0,0,0,0,0,0,0,0,0,0,0]
[null,null,null,null,3,null,null,null,null,0,0,0,0,0,0,0,0,0,0,0,0,0,0,0,0,0,0,0,0,0,0,0,0,0,0,0,0,0,0,0,0,0,0,0,0,0,0,0,0,0,0,0,0,0,0,0,0,0,0,0,0]
[null,null,null,null,4,null,null,null,null,null,0,0,0,0,0,0,0,0,0,0,0,0,0,0,0,0,0,0,0,0,0,0,0,0,0,0,0,0,0,0,0,0,0,0,0,0,0,0,0,0,0,0,0,0,0,0,0,0,0,0,0]
[null,null,null,null,5,null,null,null,null,null,null,0,0,0,0,0,0,0,0,0,0,0,0,0,0,0,0,0,0,0,0,0,0,0,0,0,0,0,0,0,0,0,0,0,0,0,0,0,0,0,0,0,0,0,0,0,0,0,0,0,0]
[null,null,null,null,6,null,null,null,null,null,null,null,0,0,0,0,0,0,0,0,0,0,0,0,0,0,0,0,0,0,0,0,0,0,0,0,0,0,0,0,0,0,0,0,0,0,0,0,0,0,0,0,0,0,0,0,0,0,0,0,0]
[null,null,null,null,7,null,null,null,null,null,null,null,null,0,0,0,0,0,0,0,0,0,0,0,0,0,0,0,0,0,0,0,0,0,0,0,0,0,0,0,0,0,0,0,0,0,0,0,0,0,0,0,0,0,0,0,0,0,0,0,0]
[null,null,null,null,8,null,null,null,null,null,null,null,null,null,0,0,0,0,0,0,0,0,0,0,0,0,0,0,0,0,0,0,0,0,0,0,0,0,0,0,0,0,0,0,0,0,0,0,0,0,0,0,0,0,0,0,0,0,0,0,0]
[null,null,null,null,9,null,null,null,null,null,null,null,null,null,null,0,0,0,0,0,0,0,0,0,0,0,0,0,0,0,0,0,0,0,0,0,0,0,0,0,0,0,0,0,0,0,0,0,0,0,0,0,0,0,0,0,0,0,0,0,0]
[null,null,null,null,10,null,null,null,null,null,null,null,null,null,null,null,0,0,0,0,0,0,0,0,0,0,0,0,0,0,0,0,0,0,0,0,0,0,0,0,0,0,0,0,0,0,0,0,0,0,0,0,0,0,0,0,0,0,0,0,0]
[null,null,{"$f":"Asset36","v":0},null,null,null,0,0,0,0,0,0,0,0,0,0,0,0,0,0,0,0,0,0,0,0,0,0,0,0,0,0,0,0,0,0,0,0,0,0,0,0,0,0,0,0,0,0,0,0,0,0,0,0,0,0,0,0,0,0,0]
[null,{"$f":"C1260","v":0},null,"Initial Asset Base",null,null,0,0,0,0,0,0,0,0,0,0,0,0,0,0,0,0,0,0,0,0,0,0,0,0,0,0,0,0,0,0,0,0,0,0,0,0,0,0,0,0,0,0,0,0,0,0,0,0,0,0,0,0,0,0,0]
[null,null,null,"Capex in year",0]
[null,null,null,null,1,null,null,0,0,0,0,0,0,0,0,0,0,0,0,0,0,0,0,0,0,0,0,0,0,0,0,0,0,0,0,0,0,0,0,0,0,0,0,0,0,0,0,0,0,0,0,0,0,0,0,0,0,0,0,0,0]
[null,null,null,null,2,null,null,null,0,0,0,0,0,0,0,0,0,0,0,0,0,0,0,0,0,0,0,0,0,0,0,0,0,0,0,0,0,0,0,0,0,0,0,0,0,0,0,0,0,0,0,0,0,0,0,0,0,0,0,0,0]
[null,null,null,null,3,null,null,null,null,0,0,0,0,0,0,0,0,0,0,0,0,0,0,0,0,0,0,0,0,0,0,0,0,0,0,0,0,0,0,0,0,0,0,0,0,0,0,0,0,0,0,0,0,0,0,0,0,0,0,0,0]
[null,null,null,null,4,null,null,null,null,null,0,0,0,0,0,0,0,0,0,0,0,0,0,0,0,0,0,0,0,0,0,0,0,0,0,0,0,0,0,0,0,0,0,0,0,0,0,0,0,0,0,0,0,0,0,0,0,0,0,0,0]
[null,null,null,null,5,null,null,null,null,null,null,0,0,0,0,0,0,0,0,0,0,0,0,0,0,0,0,0,0,0,0,0,0,0,0,0,0,0,0,0,0,0,0,0,0,0,0,0,0,0,0,0,0,0,0,0,0,0,0,0,0]
[null,null,null,null,6,null,null,null,null,null,null,null,0,0,0,0,0,0,0,0,0,0,0,0,0,0,0,0,0,0,0,0,0,0,0,0,0,0,0,0,0,0,0,0,0,0,0,0,0,0,0,0,0,0,0,0,0,0,0,0,0]
[null,null,null,null,7,null,null,null,null,null,null,null,null,0,0,0,0,0,0,0,0,0,0,0,0,0,0,0,0,0,0,0,0,0,0,0,0,0,0,0,0,0,0,0,0,0,0,0,0,0,0,0,0,0,0,0,0,0,0,0,0]
[null,null,null,null,8,null,null,null,null,null,null,null,null,null,0,0,0,0,0,0,0,0,0,0,0,0,0,0,0,0,0,0,0,0,0,0,0,0,0,0,0,0,0,0,0,0,0,0,0,0,0,0,0,0,0,0,0,0,0,0,0]
[null,null,null,null,9,null,null,null,null,null,null,null,null,null,null,0,0,0,0,0,0,0,0,0,0,0,0,0,0,0,0,0,0,0,0,0,0,0,0,0,0,0,0,0,0,0,0,0,0,0,0,0,0,0,0,0,0,0,0,0,0]
[null,null,null,null,10,null,null,null,null,null,null,null,null,null,null,null,0,0,0,0,0,0,0,0,0,0,0,0,0,0,0,0,0,0,0,0,0,0,0,0,0,0,0,0,0,0,0,0,0,0,0,0,0,0,0,0,0,0,0,0,0]
[null,null,{"$f":"Asset37","v":0},null,null,null,0,0,0,0,0,0,0,0,0,0,0,0,0,0,0,0,0,0,0,0,0,0,0,0,0,0,0,0,0,0,0,0,0,0,0,0,0,0,0,0,0,0,0,0,0,0,0,0,0,0,0,0,0,0,0]
[null,{"$f":"C1273","v":0},null,"Initial Asset Base",null,null,0,0,0,0,0,0,0,0,0,0,0,0,0,0,0,0,0,0,0,0,0,0,0,0,0,0,0,0,0,0,0,0,0,0,0,0,0,0,0,0,0,0,0,0,0,0,0,0,0,0,0,0,0,0,0]
[null,null,null,"Capex in year",0]
[null,null,null,null,1,null,null,0,0,0,0,0,0,0,0,0,0,0,0,0,0,0,0,0,0,0,0,0,0,0,0,0,0,0,0,0,0,0,0,0,0,0,0,0,0,0,0,0,0,0,0,0,0,0,0,0,0,0,0,0,0]
[null,null,null,null,2,null,null,null,0,0,0,0,0,0,0,0,0,0,0,0,0,0,0,0,0,0,0,0,0,0,0,0,0,0,0,0,0,0,0,0,0,0,0,0,0,0,0,0,0,0,0,0,0,0,0,0,0,0,0,0,0]
[null,null,null,null,3,null,null,null,null,0,0,0,0,0,0,0,0,0,0,0,0,0,0,0,0,0,0,0,0,0,0,0,0,0,0,0,0,0,0,0,0,0,0,0,0,0,0,0,0,0,0,0,0,0,0,0,0,0,0,0,0]
[null,null,null,null,4,null,null,null,null,null,0,0,0,0,0,0,0,0,0,0,0,0,0,0,0,0,0,0,0,0,0,0,0,0,0,0,0,0,0,0,0,0,0,0,0,0,0,0,0,0,0,0,0,0,0,0,0,0,0,0,0]
[null,null,null,null,5,null,null,null,null,null,null,0,0,0,0,0,0,0,0,0,0,0,0,0,0,0,0,0,0,0,0,0,0,0,0,0,0,0,0,0,0,0,0,0,0,0,0,0,0,0,0,0,0,0,0,0,0,0,0,0,0]
[null,null,null,null,6,null,null,null,null,null,null,null,0,0,0,0,0,0,0,0,0,0,0,0,0,0,0,0,0,0,0,0,0,0,0,0,0,0,0,0,0,0,0,0,0,0,0,0,0,0,0,0,0,0,0,0,0,0,0,0,0]
[null,null,null,null,7,null,null,null,null,null,null,null,null,0,0,0,0,0,0,0,0,0,0,0,0,0,0,0,0,0,0,0,0,0,0,0,0,0,0,0,0,0,0,0,0,0,0,0,0,0,0,0,0,0,0,0,0,0,0,0,0]
[null,null,null,null,8,null,null,null,null,null,null,null,null,null,0,0,0,0,0,0,0,0,0,0,0,0,0,0,0,0,0,0,0,0,0,0,0,0,0,0,0,0,0,0,0,0,0,0,0,0,0,0,0,0,0,0,0,0,0,0,0]
[null,null,null,null,9,null,null,null,null,null,null,null,null,null,null,0,0,0,0,0,0,0,0,0,0,0,0,0,0,0,0,0,0,0,0,0,0,0,0,0,0,0,0,0,0,0,0,0,0,0,0,0,0,0,0,0,0,0,0,0,0]
[null,null,null,null,10,null,null,null,null,null,null,null,null,null,null,null,0,0,0,0,0,0,0,0,0,0,0,0,0,0,0,0,0,0,0,0,0,0,0,0,0,0,0,0,0,0,0,0,0,0,0,0,0,0,0,0,0,0,0,0,0]
[null,null,{"$f":"Asset38","v":0},null,null,null,0,0,0,0,0,0,0,0,0,0,0,0,0,0,0,0,0,0,0,0,0,0,0,0,0,0,0,0,0,0,0,0,0,0,0,0,0,0,0,0,0,0,0,0,0,0,0,0,0,0,0,0,0,0,0]
[null,{"$f":"C1286","v":0},null,"Initial Asset Base",null,null,0,0,0,0,0,0,0,0,0,0,0,0,0,0,0,0,0,0,0,0,0,0,0,0,0,0,0,0,0,0,0,0,0,0,0,0,0,0,0,0,0,0,0,0,0,0,0,0,0,0,0,0,0,0,0]
[null,null,null,"Capex in year",0]
[null,null,null,null,1,null,null,0,0,0,0,0,0,0,0,0,0,0,0,0,0,0,0,0,0,0,0,0,0,0,0,0,0,0,0,0,0,0,0,0,0,0,0,0,0,0,0,0,0,0,0,0,0,0,0,0,0,0,0,0,0]
[null,null,null,null,2,null,null,null,0,0,0,0,0,0,0,0,0,0,0,0,0,0,0,0,0,0,0,0,0,0,0,0,0,0,0,0,0,0,0,0,0,0,0,0,0,0,0,0,0,0,0,0,0,0,0,0,0,0,0,0,0]
[null,null,null,null,3,null,null,null,null,0,0,0,0,0,0,0,0,0,0,0,0,0,0,0,0,0,0,0,0,0,0,0,0,0,0,0,0,0,0,0,0,0,0,0,0,0,0,0,0,0,0,0,0,0,0,0,0,0,0,0,0]
[null,null,null,null,4,null,null,null,null,null,0,0,0,0,0,0,0,0,0,0,0,0,0,0,0,0,0,0,0,0,0,0,0,0,0,0,0,0,0,0,0,0,0,0,0,0,0,0,0,0,0,0,0,0,0,0,0,0,0,0,0]
[null,null,null,null,5,null,null,null,null,null,null,0,0,0,0,0,0,0,0,0,0,0,0,0,0,0,0,0,0,0,0,0,0,0,0,0,0,0,0,0,0,0,0,0,0,0,0,0,0,0,0,0,0,0,0,0,0,0,0,0,0]
[null,null,null,null,6,null,null,null,null,null,null,null,0,0,0,0,0,0,0,0,0,0,0,0,0,0,0,0,0,0,0,0,0,0,0,0,0,0,0,0,0,0,0,0,0,0,0,0,0,0,0,0,0,0,0,0,0,0,0,0,0]
[null,null,null,null,7,null,null,null,null,null,null,null,null,0,0,0,0,0,0,0,0,0,0,0,0,0,0,0,0,0,0,0,0,0,0,0,0,0,0,0,0,0,0,0,0,0,0,0,0,0,0,0,0,0,0,0,0,0,0,0,0]
[null,null,null,null,8,null,null,null,null,null,null,null,null,null,0,0,0,0,0,0,0,0,0,0,0,0,0,0,0,0,0,0,0,0,0,0,0,0,0,0,0,0,0,0,0,0,0,0,0,0,0,0,0,0,0,0,0,0,0,0,0]
[null,null,null,null,9,null,null,null,null,null,null,null,null,null,null,0,0,0,0,0,0,0,0,0,0,0,0,0,0,0,0,0,0,0,0,0,0,0,0,0,0,0,0,0,0,0,0,0,0,0,0,0,0,0,0,0,0,0,0,0,0]
[null,null,null,null,10,null,null,null,null,null,null,null,null,null,null,null,0,0,0,0,0,0,0,0,0,0,0,0,0,0,0,0,0,0,0,0,0,0,0,0,0,0,0,0,0,0,0,0,0,0,0,0,0,0,0,0,0,0,0,0,0]
[null,null,{"$f":"Asset39","v":0},null,null,null,0,0,0,0,0,0,0,0,0,0,0,0,0,0,0,0,0,0,0,0,0,0,0,0,0,0,0,0,0,0,0,0,0,0,0,0,0,0,0,0,0,0,0,0,0,0,0,0,0,0,0,0,0,0,0]
[null,{"$f":"C1299","v":0},null,"Initial Asset Base",null,null,0,0,0,0,0,0,0,0,0,0,0,0,0,0,0,0,0,0,0,0,0,0,0,0,0,0,0,0,0,0,0,0,0,0,0,0,0,0,0,0,0,0,0,0,0,0,0,0,0,0,0,0,0,0,0]
[null,null,null,"Capex in year",0]
[null,null,null,null,1,null,null,0,0,0,0,0,0,0,0,0,0,0,0,0,0,0,0,0,0,0,0,0,0,0,0,0,0,0,0,0,0,0,0,0,0,0,0,0,0,0,0,0,0,0,0,0,0,0,0,0,0,0,0,0,0]
[null,null,null,null,2,null,null,null,0,0,0,0,0,0,0,0,0,0,0,0,0,0,0,0,0,0,0,0,0,0,0,0,0,0,0,0,0,0,0,0,0,0,0,0,0,0,0,0,0,0,0,0,0,0,0,0,0,0,0,0,0]
[null,null,null,null,3,null,null,null,null,0,0,0,0,0,0,0,0,0,0,0,0,0,0,0,0,0,0,0,0,0,0,0,0,0,0,0,0,0,0,0,0,0,0,0,0,0,0,0,0,0,0,0,0,0,0,0,0,0,0,0,0]
[null,null,null,null,4,null,null,null,null,null,0,0,0,0,0,0,0,0,0,0,0,0,0,0,0,0,0,0,0,0,0,0,0,0,0,0,0,0,0,0,0,0,0,0,0,0,0,0,0,0,0,0,0,0,0,0,0,0,0,0,0]
[null,null,null,null,5,null,null,null,null,null,null,0,0,0,0,0,0,0,0,0,0,0,0,0,0,0,0,0,0,0,0,0,0,0,0,0,0,0,0,0,0,0,0,0,0,0,0,0,0,0,0,0,0,0,0,0,0,0,0,0,0]
[null,null,null,null,6,null,null,null,null,null,null,null,0,0,0,0,0,0,0,0,0,0,0,0,0,0,0,0,0,0,0,0,0,0,0,0,0,0,0,0,0,0,0,0,0,0,0,0,0,0,0,0,0,0,0,0,0,0,0,0,0]
[null,null,null,null,7,null,null,null,null,null,null,null,null,0,0,0,0,0,0,0,0,0,0,0,0,0,0,0,0,0,0,0,0,0,0,0,0,0,0,0,0,0,0,0,0,0,0,0,0,0,0,0,0,0,0,0,0,0,0,0,0]
[null,null,null,null,8,null,null,null,null,null,null,null,null,null,0,0,0,0,0,0,0,0,0,0,0,0,0,0,0,0,0,0,0,0,0,0,0,0,0,0,0,0,0,0,0,0,0,0,0,0,0,0,0,0,0,0,0,0,0,0,0]
[null,null,null,null,9,null,null,null,null,null,null,null,null,null,null,0,0,0,0,0,0,0,0,0,0,0,0,0,0,0,0,0,0,0,0,0,0,0,0,0,0,0,0,0,0,0,0,0,0,0,0,0,0,0,0,0,0,0,0,0,0]
[null,null,null,null,10,null,null,null,null,null,null,null,null,null,null,null,0,0,0,0,0,0,0,0,0,0,0,0,0,0,0,0,0,0,0,0,0,0,0,0,0,0,0,0,0,0,0,0,0,0,0,0,0,0,0,0,0,0,0,0,0]
[null,null,{"$f":"Asset40","v":0},null,null,null,0,0,0,0,0,0,0,0,0,0,0,0,0,0,0,0,0,0,0,0,0,0,0,0,0,0,0,0,0,0,0,0,0,0,0,0,0,0,0,0,0,0,0,0,0,0,0,0,0,0,0,0,0,0,0]
[null,{"$f":"C1312","v":0},null,"Initial Asset Base",null,null,0,0,0,0,0,0,0,0,0,0,0,0,0,0,0,0,0,0,0,0,0,0,0,0,0,0,0,0,0,0,0,0,0,0,0,0,0,0,0,0,0,0,0,0,0,0,0,0,0,0,0,0,0,0,0]
[null,null,null,"Capex in year",0]
[null,null,null,null,1,null,null,0,0,0,0,0,0,0,0,0,0,0,0,0,0,0,0,0,0,0,0,0,0,0,0,0,0,0,0,0,0,0,0,0,0,0,0,0,0,0,0,0,0,0,0,0,0,0,0,0,0,0,0,0,0]
[null,null,null,null,2,null,null,null,0,0,0,0,0,0,0,0,0,0,0,0,0,0,0,0,0,0,0,0,0,0,0,0,0,0,0,0,0,0,0,0,0,0,0,0,0,0,0,0,0,0,0,0,0,0,0,0,0,0,0,0,0]
[null,null,null,null,3,null,null,null,null,0,0,0,0,0,0,0,0,0,0,0,0,0,0,0,0,0,0,0,0,0,0,0,0,0,0,0,0,0,0,0,0,0,0,0,0,0,0,0,0,0,0,0,0,0,0,0,0,0,0,0,0]
[null,null,null,null,4,null,null,null,null,null,0,0,0,0,0,0,0,0,0,0,0,0,0,0,0,0,0,0,0,0,0,0,0,0,0,0,0,0,0,0,0,0,0,0,0,0,0,0,0,0,0,0,0,0,0,0,0,0,0,0,0]
[null,null,null,null,5,null,null,null,null,null,null,0,0,0,0,0,0,0,0,0,0,0,0,0,0,0,0,0,0,0,0,0,0,0,0,0,0,0,0,0,0,0,0,0,0,0,0,0,0,0,0,0,0,0,0,0,0,0,0,0,0]
[null,null,null,null,6,null,null,null,null,null,null,null,0,0,0,0,0,0,0,0,0,0,0,0,0,0,0,0,0,0,0,0,0,0,0,0,0,0,0,0,0,0,0,0,0,0,0,0,0,0,0,0,0,0,0,0,0,0,0,0,0]
[null,null,null,null,7,null,null,null,null,null,null,null,null,0,0,0,0,0,0,0,0,0,0,0,0,0,0,0,0,0,0,0,0,0,0,0,0,0,0,0,0,0,0,0,0,0,0,0,0,0,0,0,0,0,0,0,0,0,0,0,0]
[null,null,null,null,8,null,null,null,null,null,null,null,null,null,0,0,0,0,0,0,0,0,0,0,0,0,0,0,0,0,0,0,0,0,0,0,0,0,0,0,0,0,0,0,0,0,0,0,0,0,0,0,0,0,0,0,0,0,0,0,0]
[null,null,null,null,9,null,null,null,null,null,null,null,null,null,null,0,0,0,0,0,0,0,0,0,0,0,0,0,0,0,0,0,0,0,0,0,0,0,0,0,0,0,0,0,0,0,0,0,0,0,0,0,0,0,0,0,0,0,0,0,0]
[null,null,null,null,10,null,null,null,null,null,null,null,null,null,null,null,0,0,0,0,0,0,0,0,0,0,0,0,0,0,0,0,0,0,0,0,0,0,0,0,0,0,0,0,0,0,0,0,0,0,0,0,0,0,0,0,0,0,0,0,0]
[null,null,{"$f":"Asset41","v":0},null,null,null,0,0,0,0,0,0,0,0,0,0,0,0,0,0,0,0,0,0,0,0,0,0,0,0,0,0,0,0,0,0,0,0,0,0,0,0,0,0,0,0,0,0,0,0,0,0,0,0,0,0,0,0,0,0,0]
[null,{"$f":"C1325","v":0},null,"Initial Asset Base",null,null,0,0,0,0,0,0,0,0,0,0,0,0,0,0,0,0,0,0,0,0,0,0,0,0,0,0,0,0,0,0,0,0,0,0,0,0,0,0,0,0,0,0,0,0,0,0,0,0,0,0,0,0,0,0,0]
[null,null,null,"Capex in year",0]
[null,null,null,null,1,null,null,0,0,0,0,0,0,0,0,0,0,0,0,0,0,0,0,0,0,0,0,0,0,0,0,0,0,0,0,0,0,0,0,0,0,0,0,0,0,0,0,0,0,0,0,0,0,0,0,0,0,0,0,0,0]
[null,null,null,null,2,null,null,null,0,0,0,0,0,0,0,0,0,0,0,0,0,0,0,0,0,0,0,0,0,0,0,0,0,0,0,0,0,0,0,0,0,0,0,0,0,0,0,0,0,0,0,0,0,0,0,0,0,0,0,0,0]
[null,null,null,null,3,null,null,null,null,0,0,0,0,0,0,0,0,0,0,0,0,0,0,0,0,0,0,0,0,0,0,0,0,0,0,0,0,0,0,0,0,0,0,0,0,0,0,0,0,0,0,0,0,0,0,0,0,0,0,0,0]
[null,null,null,null,4,null,null,null,null,null,0,0,0,0,0,0,0,0,0,0,0,0,0,0,0,0,0,0,0,0,0,0,0,0,0,0,0,0,0,0,0,0,0,0,0,0,0,0,0,0,0,0,0,0,0,0,0,0,0,0,0]
[null,null,null,null,5,null,null,null,null,null,null,0,0,0,0,0,0,0,0,0,0,0,0,0,0,0,0,0,0,0,0,0,0,0,0,0,0,0,0,0,0,0,0,0,0,0,0,0,0,0,0,0,0,0,0,0,0,0,0,0,0]
[null,null,null,null,6,null,null,null,null,null,null,null,0,0,0,0,0,0,0,0,0,0,0,0,0,0,0,0,0,0,0,0,0,0,0,0,0,0,0,0,0,0,0,0,0,0,0,0,0,0,0,0,0,0,0,0,0,0,0,0,0]
[null,null,null,null,7,null,null,null,null,null,null,null,null,0,0,0,0,0,0,0,0,0,0,0,0,0,0,0,0,0,0,0,0,0,0,0,0,0,0,0,0,0,0,0,0,0,0,0,0,0,0,0,0,0,0,0,0,0,0,0,0]
[null,null,null,null,8,null,null,null,null,null,null,null,null,null,0,0,0,0,0,0,0,0,0,0,0,0,0,0,0,0,0,0,0,0,0,0,0,0,0,0,0,0,0,0,0,0,0,0,0,0,0,0,0,0,0,0,0,0,0,0,0]
[null,null,null,null,9,null,null,null,null,null,null,null,null,null,null,0,0,0,0,0,0,0,0,0,0,0,0,0,0,0,0,0,0,0,0,0,0,0,0,0,0,0,0,0,0,0,0,0,0,0,0,0,0,0,0,0,0,0,0,0,0]
[null,null,null,null,10,null,null,null,null,null,null,null,null,null,null,null,0,0,0,0,0,0,0,0,0,0,0,0,0,0,0,0,0,0,0,0,0,0,0,0,0,0,0,0,0,0,0,0,0,0,0,0,0,0,0,0,0,0,0,0,0]
[null,null,{"$f":"Asset42","v":0},null,null,null,0,0,0,0,0,0,0,0,0,0,0,0,0,0,0,0,0,0,0,0,0,0,0,0,0,0,0,0,0,0,0,0,0,0,0,0,0,0,0,0,0,0,0,0,0,0,0,0,0,0,0,0,0,0,0]
[null,{"$f":"C1338","v":0},null,"Initial Asset Base",null,null,0,0,0,0,0,0,0,0,0,0,0,0,0,0,0,0,0,0,0,0,0,0,0,0,0,0,0,0,0,0,0,0,0,0,0,0,0,0,0,0,0,0,0,0,0,0,0,0,0,0,0,0,0,0,0]
[null,null,null,"Capex in year",0]
[null,null,null,null,1,null,null,0,0,0,0,0,0,0,0,0,0,0,0,0,0,0,0,0,0,0,0,0,0,0,0,0,0,0,0,0,0,0,0,0,0,0,0,0,0,0,0,0,0,0,0,0,0,0,0,0,0,0,0,0,0]
[null,null,null,null,2,null,null,null,0,0,0,0,0,0,0,0,0,0,0,0,0,0,0,0,0,0,0,0,0,0,0,0,0,0,0,0,0,0,0,0,0,0,0,0,0,0,0,0,0,0,0,0,0,0,0,0,0,0,0,0,0]
[null,null,null,null,3,null,null,null,null,0,0,0,0,0,0,0,0,0,0,0,0,0,0,0,0,0,0,0,0,0,0,0,0,0,0,0,0,0,0,0,0,0,0,0,0,0,0,0,0,0,0,0,0,0,0,0,0,0,0,0,0]
[null,null,null,null,4,null,null,null,null,null,0,0,0,0,0,0,0,0,0,0,0,0,0,0,0,0,0,0,0,0,0,0,0,0,0,0,0,0,0,0,0,0,0,0,0,0,0,0,0,0,0,0,0,0,0,0,0,0,0,0,0]
[null,null,null,null,5,null,null,null,null,null,null,0,0,0,0,0,0,0,0,0,0,0,0,0,0,0,0,0,0,0,0,0,0,0,0,0,0,0,0,0,0,0,0,0,0,0,0,0,0,0,0,0,0,0,0,0,0,0,0,0,0]
[null,null,null,null,6,null,null,null,null,null,null,null,0,0,0,0,0,0,0,0,0,0,0,0,0,0,0,0,0,0,0,0,0,0,0,0,0,0,0,0,0,0,0,0,0,0,0,0,0,0,0,0,0,0,0,0,0,0,0,0,0]
[null,null,null,null,7,null,null,null,null,null,null,null,null,0,0,0,0,0,0,0,0,0,0,0,0,0,0,0,0,0,0,0,0,0,0,0,0,0,0,0,0,0,0,0,0,0,0,0,0,0,0,0,0,0,0,0,0,0,0,0,0]
[null,null,null,null,8,null,null,null,null,null,null,null,null,null,0,0,0,0,0,0,0,0,0,0,0,0,0,0,0,0,0,0,0,0,0,0,0,0,0,0,0,0,0,0,0,0,0,0,0,0,0,0,0,0,0,0,0,0,0,0,0]
[null,null,null,null,9,null,null,null,null,null,null,null,null,null,null,0,0,0,0,0,0,0,0,0,0,0,0,0,0,0,0,0,0,0,0,0,0,0,0,0,0,0,0,0,0,0,0,0,0,0,0,0,0,0,0,0,0,0,0,0,0]
[null,null,null,null,10,null,null,null,null,null,null,null,null,null,null,null,0,0,0,0,0,0,0,0,0,0,0,0,0,0,0,0,0,0,0,0,0,0,0,0,0,0,0,0,0,0,0,0,0,0,0,0,0,0,0,0,0,0,0,0,0]
[null,null,{"$f":"Asset43","v":0},null,null,null,0,0,0,0,0,0,0,0,0,0,0,0,0,0,0,0,0,0,0,0,0,0,0,0,0,0,0,0,0,0,0,0,0,0,0,0,0,0,0,0,0,0,0,0,0,0,0,0,0,0,0,0,0,0,0]
[null,{"$f":"C1351","v":0},null,"Initial Asset Base",null,null,0,0,0,0,0,0,0,0,0,0,0,0,0,0,0,0,0,0,0,0,0,0,0,0,0,0,0,0,0,0,0,0,0,0,0,0,0,0,0,0,0,0,0,0,0,0,0,0,0,0,0,0,0,0,0]
[null,null,null,"Capex in year",0]
[null,null,null,null,1,null,null,0,0,0,0,0,0,0,0,0,0,0,0,0,0,0,0,0,0,0,0,0,0,0,0,0,0,0,0,0,0,0,0,0,0,0,0,0,0,0,0,0,0,0,0,0,0,0,0,0,0,0,0,0,0]
[null,null,null,null,2,null,null,null,0,0,0,0,0,0,0,0,0,0,0,0,0,0,0,0,0,0,0,0,0,0,0,0,0,0,0,0,0,0,0,0,0,0,0,0,0,0,0,0,0,0,0,0,0,0,0,0,0,0,0,0,0]
[null,null,null,null,3,null,null,null,null,0,0,0,0,0,0,0,0,0,0,0,0,0,0,0,0,0,0,0,0,0,0,0,0,0,0,0,0,0,0,0,0,0,0,0,0,0,0,0,0,0,0,0,0,0,0,0,0,0,0,0,0]
[null,null,null,null,4,null,null,null,null,null,0,0,0,0,0,0,0,0,0,0,0,0,0,0,0,0,0,0,0,0,0,0,0,0,0,0,0,0,0,0,0,0,0,0,0,0,0,0,0,0,0,0,0,0,0,0,0,0,0,0,0]
[null,null,null,null,5,null,null,null,null,null,null,0,0,0,0,0,0,0,0,0,0,0,0,0,0,0,0,0,0,0,0,0,0,0,0,0,0,0,0,0,0,0,0,0,0,0,0,0,0,0,0,0,0,0,0,0,0,0,0,0,0]
[null,null,null,null,6,null,null,null,null,null,null,null,0,0,0,0,0,0,0,0,0,0,0,0,0,0,0,0,0,0,0,0,0,0,0,0,0,0,0,0,0,0,0,0,0,0,0,0,0,0,0,0,0,0,0,0,0,0,0,0,0]
[null,null,null,null,7,null,null,null,null,null,null,null,null,0,0,0,0,0,0,0,0,0,0,0,0,0,0,0,0,0,0,0,0,0,0,0,0,0,0,0,0,0,0,0,0,0,0,0,0,0,0,0,0,0,0,0,0,0,0,0,0]
[null,null,null,null,8,null,null,null,null,null,null,null,null,null,0,0,0,0,0,0,0,0,0,0,0,0,0,0,0,0,0,0,0,0,0,0,0,0,0,0,0,0,0,0,0,0,0,0,0,0,0,0,0,0,0,0,0,0,0,0,0]
[null,null,null,null,9,null,null,null,null,null,null,null,null,null,null,0,0,0,0,0,0,0,0,0,0,0,0,0,0,0,0,0,0,0,0,0,0,0,0,0,0,0,0,0,0,0,0,0,0,0,0,0,0,0,0,0,0,0,0,0,0]
[null,null,null,null,10,null,null,null,null,null,null,null,null,null,null,null,0,0,0,0,0,0,0,0,0,0,0,0,0,0,0,0,0,0,0,0,0,0,0,0,0,0,0,0,0,0,0,0,0,0,0,0,0,0,0,0,0,0,0,0,0]
[null,null,{"$f":"Asset44","v":0},null,null,null,0,0,0,0,0,0,0,0,0,0,0,0,0,0,0,0,0,0,0,0,0,0,0,0,0,0,0,0,0,0,0,0,0,0,0,0,0,0,0,0,0,0,0,0,0,0,0,0,0,0,0,0,0,0,0]
[null,{"$f":"C1364","v":0},null,"Initial Asset Base",null,null,0,0,0,0,0,0,0,0,0,0,0,0,0,0,0,0,0,0,0,0,0,0,0,0,0,0,0,0,0,0,0,0,0,0,0,0,0,0,0,0,0,0,0,0,0,0,0,0,0,0,0,0,0,0,0]
[null,null,null,"Capex in year",0]
[null,null,null,null,1,null,null,0,0,0,0,0,0,0,0,0,0,0,0,0,0,0,0,0,0,0,0,0,0,0,0,0,0,0,0,0,0,0,0,0,0,0,0,0,0,0,0,0,0,0,0,0,0,0,0,0,0,0,0,0,0]
[null,null,null,null,2,null,null,null,0,0,0,0,0,0,0,0,0,0,0,0,0,0,0,0,0,0,0,0,0,0,0,0,0,0,0,0,0,0,0,0,0,0,0,0,0,0,0,0,0,0,0,0,0,0,0,0,0,0,0,0,0]
[null,null,null,null,3,null,null,null,null,0,0,0,0,0,0,0,0,0,0,0,0,0,0,0,0,0,0,0,0,0,0,0,0,0,0,0,0,0,0,0,0,0,0,0,0,0,0,0,0,0,0,0,0,0,0,0,0,0,0,0,0]
[null,null,null,null,4,null,null,null,null,null,0,0,0,0,0,0,0,0,0,0,0,0,0,0,0,0,0,0,0,0,0,0,0,0,0,0,0,0,0,0,0,0,0,0,0,0,0,0,0,0,0,0,0,0,0,0,0,0,0,0,0]
[null,null,null,null,5,null,null,null,null,null,null,0,0,0,0,0,0,0,0,0,0,0,0,0,0,0,0,0,0,0,0,0,0,0,0,0,0,0,0,0,0,0,0,0,0,0,0,0,0,0,0,0,0,0,0,0,0,0,0,0,0]
[null,null,null,null,6,null,null,null,null,null,null,null,0,0,0,0,0,0,0,0,0,0,0,0,0,0,0,0,0,0,0,0,0,0,0,0,0,0,0,0,0,0,0,0,0,0,0,0,0,0,0,0,0,0,0,0,0,0,0,0,0]
[null,null,null,null,7,null,null,null,null,null,null,null,null,0,0,0,0,0,0,0,0,0,0,0,0,0,0,0,0,0,0,0,0,0,0,0,0,0,0,0,0,0,0,0,0,0,0,0,0,0,0,0,0,0,0,0,0,0,0,0,0]
[null,null,null,null,8,null,null,null,null,null,null,null,null,null,0,0,0,0,0,0,0,0,0,0,0,0,0,0,0,0,0,0,0,0,0,0,0,0,0,0,0,0,0,0,0,0,0,0,0,0,0,0,0,0,0,0,0,0,0,0,0]
[null,null,null,null,9,null,null,null,null,null,null,null,null,null,null,0,0,0,0,0,0,0,0,0,0,0,0,0,0,0,0,0,0,0,0,0,0,0,0,0,0,0,0,0,0,0,0,0,0,0,0,0,0,0,0,0,0,0,0,0,0]
[null,null,null,null,10,null,null,null,null,null,null,null,null,null,null,null,0,0,0,0,0,0,0,0,0,0,0,0,0,0,0,0,0,0,0,0,0,0,0,0,0,0,0,0,0,0,0,0,0,0,0,0,0,0,0,0,0,0,0,0,0]
[null,null,{"$f":"Asset45","v":0},null,null,null,0,0,0,0,0,0,0,0,0,0,0,0,0,0,0,0,0,0,0,0,0,0,0,0,0,0,0,0,0,0,0,0,0,0,0,0,0,0,0,0,0,0,0,0,0,0,0,0,0,0,0,0,0,0,0]
[null,{"$f":"C1377","v":0},null,"Initial Asset Base",null,null,0,0,0,0,0,0,0,0,0,0,0,0,0,0,0,0,0,0,0,0,0,0,0,0,0,0,0,0,0,0,0,0,0,0,0,0,0,0,0,0,0,0,0,0,0,0,0,0,0,0,0,0,0,0,0]
[null,null,null,"Capex in year",0]
[null,null,null,null,1,null,null,0,0,0,0,0,0,0,0,0,0,0,0,0,0,0,0,0,0,0,0,0,0,0,0,0,0,0,0,0,0,0,0,0,0,0,0,0,0,0,0,0,0,0,0,0,0,0,0,0,0,0,0,0,0]
[null,null,null,null,2,null,null,null,0,0,0,0,0,0,0,0,0,0,0,0,0,0,0,0,0,0,0,0,0,0,0,0,0,0,0,0,0,0,0,0,0,0,0,0,0,0,0,0,0,0,0,0,0,0,0,0,0,0,0,0,0]
[null,null,null,null,3,null,null,null,null,0,0,0,0,0,0,0,0,0,0,0,0,0,0,0,0,0,0,0,0,0,0,0,0,0,0,0,0,0,0,0,0,0,0,0,0,0,0,0,0,0,0,0,0,0,0,0,0,0,0,0,0]
[null,null,null,null,4,null,null,null,null,null,0,0,0,0,0,0,0,0,0,0,0,0,0,0,0,0,0,0,0,0,0,0,0,0,0,0,0,0,0,0,0,0,0,0,0,0,0,0,0,0,0,0,0,0,0,0,0,0,0,0,0]
[null,null,null,null,5,null,null,null,null,null,null,0,0,0,0,0,0,0,0,0,0,0,0,0,0,0,0,0,0,0,0,0,0,0,0,0,0,0,0,0,0,0,0,0,0,0,0,0,0,0,0,0,0,0,0,0,0,0,0,0,0]
[null,null,null,null,6,null,null,null,null,null,null,null,0,0,0,0,0,0,0,0,0,0,0,0,0,0,0,0,0,0,0,0,0,0,0,0,0,0,0,0,0,0,0,0,0,0,0,0,0,0,0,0,0,0,0,0,0,0,0,0,0]
[null,null,null,null,7,null,null,null,null,null,null,null,null,0,0,0,0,0,0,0,0,0,0,0,0,0,0,0,0,0,0,0,0,0,0,0,0,0,0,0,0,0,0,0,0,0,0,0,0,0,0,0,0,0,0,0,0,0,0,0,0]
[null,null,null,null,8,null,null,null,null,null,null,null,null,null,0,0,0,0,0,0,0,0,0,0,0,0,0,0,0,0,0,0,0,0,0,0,0,0,0,0,0,0,0,0,0,0,0,0,0,0,0,0,0,0,0,0,0,0,0,0,0]
[null,null,null,null,9,null,null,null,null,null,null,null,null,null,null,0,0,0,0,0,0,0,0,0,0,0,0,0,0,0,0,0,0,0,0,0,0,0,0,0,0,0,0,0,0,0,0,0,0,0,0,0,0,0,0,0,0,0,0,0,0]
[null,null,null,null,10,null,null,null,null,null,null,null,null,null,null,null,0,0,0,0,0,0,0,0,0,0,0,0,0,0,0,0,0,0,0,0,0,0,0,0,0,0,0,0,0,0,0,0,0,0,0,0,0,0,0,0,0,0,0,0,0]
[null,null,{"$f":"Asset46","v":0},null,null,null,0,0,0,0,0,0,0,0,0,0,0,0,0,0,0,0,0,0,0,0,0,0,0,0,0,0,0,0,0,0,0,0,0,0,0,0,0,0,0,0,0,0,0,0,0,0,0,0,0,0,0,0,0,0,0]
[null,{"$f":"C1390","v":0},null,"Initial Asset Base",null,null,0,0,0,0,0,0,0,0,0,0,0,0,0,0,0,0,0,0,0,0,0,0,0,0,0,0,0,0,0,0,0,0,0,0,0,0,0,0,0,0,0,0,0,0,0,0,0,0,0,0,0,0,0,0,0]
[null,null,null,"Capex in year",0]
[null,null,null,null,1,null,null,0,0,0,0,0,0,0,0,0,0,0,0,0,0,0,0,0,0,0,0,0,0,0,0,0,0,0,0,0,0,0,0,0,0,0,0,0,0,0,0,0,0,0,0,0,0,0,0,0,0,0,0,0,0]
[null,null,null,null,2,null,null,null,0,0,0,0,0,0,0,0,0,0,0,0,0,0,0,0,0,0,0,0,0,0,0,0,0,0,0,0,0,0,0,0,0,0,0,0,0,0,0,0,0,0,0,0,0,0,0,0,0,0,0,0,0]
[null,null,null,null,3,null,null,null,null,0,0,0,0,0,0,0,0,0,0,0,0,0,0,0,0,0,0,0,0,0,0,0,0,0,0,0,0,0,0,0,0,0,0,0,0,0,0,0,0,0,0,0,0,0,0,0,0,0,0,0,0]
[null,null,null,null,4,null,null,null,null,null,0,0,0,0,0,0,0,0,0,0,0,0,0,0,0,0,0,0,0,0,0,0,0,0,0,0,0,0,0,0,0,0,0,0,0,0,0,0,0,0,0,0,0,0,0,0,0,0,0,0,0]
[null,null,null,null,5,null,null,null,null,null,null,0,0,0,0,0,0,0,0,0,0,0,0,0,0,0,0,0,0,0,0,0,0,0,0,0,0,0,0,0,0,0,0,0,0,0,0,0,0,0,0,0,0,0,0,0,0,0,0,0,0]
[null,null,null,null,6,null,null,null,null,null,null,null,0,0,0,0,0,0,0,0,0,0,0,0,0,0,0,0,0,0,0,0,0,0,0,0,0,0,0,0,0,0,0,0,0,0,0,0,0,0,0,0,0,0,0,0,0,0,0,0,0]
[null,null,null,null,7,null,null,null,null,null,null,null,null,0,0,0,0,0,0,0,0,0,0,0,0,0,0,0,0,0,0,0,0,0,0,0,0,0,0,0,0,0,0,0,0,0,0,0,0,0,0,0,0,0,0,0,0,0,0,0,0]
[null,null,null,null,8,null,null,null,null,null,null,null,null,null,0,0,0,0,0,0,0,0,0,0,0,0,0,0,0,0,0,0,0,0,0,0,0,0,0,0,0,0,0,0,0,0,0,0,0,0,0,0,0,0,0,0,0,0,0,0,0]
[null,null,null,null,9,null,null,null,null,null,null,null,null,null,null,0,0,0,0,0,0,0,0,0,0,0,0,0,0,0,0,0,0,0,0,0,0,0,0,0,0,0,0,0,0,0,0,0,0,0,0,0,0,0,0,0,0,0,0,0,0]
[null,null,null,null,10,null,null,null,null,null,null,null,null,null,null,null,0,0,0,0,0,0,0,0,0,0,0,0,0,0,0,0,0,0,0,0,0,0,0,0,0,0,0,0,0,0,0,0,0,0,0,0,0,0,0,0,0,0,0,0,0]
[null,null,{"$f":"Asset47","v":0},null,null,null,0,0,0,0,0,0,0,0,0,0,0,0,0,0,0,0,0,0,0,0,0,0,0,0,0,0,0,0,0,0,0,0,0,0,0,0,0,0,0,0,0,0,0,0,0,0,0,0,0,0,0,0,0,0,0]
[null,{"$f":"C1403","v":0},null,"Initial Asset Base",null,null,0,0,0,0,0,0,0,0,0,0,0,0,0,0,0,0,0,0,0,0,0,0,0,0,0,0,0,0,0,0,0,0,0,0,0,0,0,0,0,0,0,0,0,0,0,0,0,0,0,0,0,0,0,0,0]
[null,null,null,"Capex in year",0]
[null,null,null,null,1,null,null,0,0,0,0,0,0,0,0,0,0,0,0,0,0,0,0,0,0,0,0,0,0,0,0,0,0,0,0,0,0,0,0,0,0,0,0,0,0,0,0,0,0,0,0,0,0,0,0,0,0,0,0,0,0]
[null,null,null,null,2,null,null,null,0,0,0,0,0,0,0,0,0,0,0,0,0,0,0,0,0,0,0,0,0,0,0,0,0,0,0,0,0,0,0,0,0,0,0,0,0,0,0,0,0,0,0,0,0,0,0,0,0,0,0,0,0]
[null,null,null,null,3,null,null,null,null,0,0,0,0,0,0,0,0,0,0,0,0,0,0,0,0,0,0,0,0,0,0,0,0,0,0,0,0,0,0,0,0,0,0,0,0,0,0,0,0,0,0,0,0,0,0,0,0,0,0,0,0]
[null,null,null,null,4,null,null,null,null,null,0,0,0,0,0,0,0,0,0,0,0,0,0,0,0,0,0,0,0,0,0,0,0,0,0,0,0,0,0,0,0,0,0,0,0,0,0,0,0,0,0,0,0,0,0,0,0,0,0,0,0]
[null,null,null,null,5,null,null,null,null,null,null,0,0,0,0,0,0,0,0,0,0,0,0,0,0,0,0,0,0,0,0,0,0,0,0,0,0,0,0,0,0,0,0,0,0,0,0,0,0,0,0,0,0,0,0,0,0,0,0,0,0]
[null,null,null,null,6,null,null,null,null,null,null,null,0,0,0,0,0,0,0,0,0,0,0,0,0,0,0,0,0,0,0,0,0,0,0,0,0,0,0,0,0,0,0,0,0,0,0,0,0,0,0,0,0,0,0,0,0,0,0,0,0]
[null,null,null,null,7,null,null,null,null,null,null,null,null,0,0,0,0,0,0,0,0,0,0,0,0,0,0,0,0,0,0,0,0,0,0,0,0,0,0,0,0,0,0,0,0,0,0,0,0,0,0,0,0,0,0,0,0,0,0,0,0]
[null,null,null,null,8,null,null,null,null,null,null,null,null,null,0,0,0,0,0,0,0,0,0,0,0,0,0,0,0,0,0,0,0,0,0,0,0,0,0,0,0,0,0,0,0,0,0,0,0,0,0,0,0,0,0,0,0,0,0,0,0]
[null,null,null,null,9,null,null,null,null,null,null,null,null,null,null,0,0,0,0,0,0,0,0,0,0,0,0,0,0,0,0,0,0,0,0,0,0,0,0,0,0,0,0,0,0,0,0,0,0,0,0,0,0,0,0,0,0,0,0,0,0]
[null,null,null,null,10,null,null,null,null,null,null,null,null,null,null,null,0,0,0,0,0,0,0,0,0,0,0,0,0,0,0,0,0,0,0,0,0,0,0,0,0,0,0,0,0,0,0,0,0,0,0,0,0,0,0,0,0,0,0,0,0]
[null,null,{"$f":"Asset48","v":0},null,null,null,0,0,0,0,0,0,0,0,0,0,0,0,0,0,0,0,0,0,0,0,0,0,0,0,0,0,0,0,0,0,0,0,0,0,0,0,0,0,0,0,0,0,0,0,0,0,0,0,0,0,0,0,0,0,0]
[null,{"$f":"C1416","v":0},null,"Initial Asset Base",null,null,0,0,0,0,0,0,0,0,0,0,0,0,0,0,0,0,0,0,0,0,0,0,0,0,0,0,0,0,0,0,0,0,0,0,0,0,0,0,0,0,0,0,0,0,0,0,0,0,0,0,0,0,0,0,0]
[null,null,null,"Capex in year",0]
[null,null,null,null,1,null,null,0,0,0,0,0,0,0,0,0,0,0,0,0,0,0,0,0,0,0,0,0,0,0,0,0,0,0,0,0,0,0,0,0,0,0,0,0,0,0,0,0,0,0,0,0,0,0,0,0,0,0,0,0,0]
[null,null,null,null,2,null,null,null,0,0,0,0,0,0,0,0,0,0,0,0,0,0,0,0,0,0,0,0,0,0,0,0,0,0,0,0,0,0,0,0,0,0,0,0,0,0,0,0,0,0,0,0,0,0,0,0,0,0,0,0,0]
[null,null,null,null,3,null,null,null,null,0,0,0,0,0,0,0,0,0,0,0,0,0,0,0,0,0,0,0,0,0,0,0,0,0,0,0,0,0,0,0,0,0,0,0,0,0,0,0,0,0,0,0,0,0,0,0,0,0,0,0,0]
[null,null,null,null,4,null,null,null,null,null,0,0,0,0,0,0,0,0,0,0,0,0,0,0,0,0,0,0,0,0,0,0,0,0,0,0,0,0,0,0,0,0,0,0,0,0,0,0,0,0,0,0,0,0,0,0,0,0,0,0,0]
[null,null,null,null,5,null,null,null,null,null,null,0,0,0,0,0,0,0,0,0,0,0,0,0,0,0,0,0,0,0,0,0,0,0,0,0,0,0,0,0,0,0,0,0,0,0,0,0,0,0,0,0,0,0,0,0,0,0,0,0,0]
[null,null,null,null,6,null,null,null,null,null,null,null,0,0,0,0,0,0,0,0,0,0,0,0,0,0,0,0,0,0,0,0,0,0,0,0,0,0,0,0,0,0,0,0,0,0,0,0,0,0,0,0,0,0,0,0,0,0,0,0,0]
[null,null,null,null,7,null,null,null,null,null,null,null,null,0,0,0,0,0,0,0,0,0,0,0,0,0,0,0,0,0,0,0,0,0,0,0,0,0,0,0,0,0,0,0,0,0,0,0,0,0,0,0,0,0,0,0,0,0,0,0,0]
[null,null,null,null,8,null,null,null,null,null,null,null,null,null,0,0,0,0,0,0,0,0,0,0,0,0,0,0,0,0,0,0,0,0,0,0,0,0,0,0,0,0,0,0,0,0,0,0,0,0,0,0,0,0,0,0,0,0,0,0,0]
[null,null,null,null,9,null,null,null,null,null,null,null,null,null,null,0,0,0,0,0,0,0,0,0,0,0,0,0,0,0,0,0,0,0,0,0,0,0,0,0,0,0,0,0,0,0,0,0,0,0,0,0,0,0,0,0,0,0,0,0,0]
[null,null,null,null,10,null,null,null,null,null,null,null,null,null,null,null,0,0,0,0,0,0,0,0,0,0,0,0,0,0,0,0,0,0,0,0,0,0,0,0,0,0,0,0,0,0,0,0,0,0,0,0,0,0,0,0,0,0,0,0,0]
[null,null,{"$f":"Asset49","v":0},null,null,null,0,0,0,0,0,0,0,0,0,0,0,0,0,0,0,0,0,0,0,0,0,0,0,0,0,0,0,0,0,0,0,0,0,0,0,0,0,0,0,0,0,0,0,0,0,0,0,0,0,0,0,0,0,0,0]
[null,{"$f":"C1429","v":"Equity raising costs"},null,"Initial Asset Base",null,null,0,0,0,0,0,0,0,0,0,0,0,0,0,0,0,0,0,0,0,0,0,0,0,0,0,0,0,0,0,0,0,0,0,0,0,0,0,0,0,0,0,0,0,0,0,0,0,0,0,0,0,0,0,0,0]
[null,null,null,"Capex in year",0]
[null,null,null,null,1,null,null,0,0,0,0,0,0,0,0,0,0,0,0,0,0,0,0,0,0,0,0,0,0,0,0,0,0,0,0,0,0,0,0,0,0,0,0,0,0,0,0,0,0,0,0,0,0,0,0,0,0,0,0,0,0]
[null,null,null,null,2,null,null,null,0,0,0,0,0,0,0,0,0,0,0,0,0,0,0,0,0,0,0,0,0,0,0,0,0,0,0,0,0,0,0,0,0,0,0,0,0,0,0,0,0,0,0,0,0,0,0,0,0,0,0,0,0]
[null,null,null,null,3,null,null,null,null,0,0,0,0,0,0,0,0,0,0,0,0,0,0,0,0,0,0,0,0,0,0,0,0,0,0,0,0,0,0,0,0,0,0,0,0,0,0,0,0,0,0,0,0,0,0,0,0,0,0,0,0]
[null,null,null,null,4,null,null,null,null,null,0,0,0,0,0,0,0,0,0,0,0,0,0,0,0,0,0,0,0,0,0,0,0,0,0,0,0,0,0,0,0,0,0,0,0,0,0,0,0,0,0,0,0,0,0,0,0,0,0,0,0]
[null,null,null,null,5,null,null,null,null,null,null,0,0,0,0,0,0,0,0,0,0,0,0,0,0,0,0,0,0,0,0,0,0,0,0,0,0,0,0,0,0,0,0,0,0,0,0,0,0,0,0,0,0,0,0,0,0,0,0,0,0]
[null,null,null,null,6,null,null,null,null,null,null,null,0,0,0,0,0,0,0,0,0,0,0,0,0,0,0,0,0,0,0,0,0,0,0,0,0,0,0,0,0,0,0,0,0,0,0,0,0,0,0,0,0,0,0,0,0,0,0,0,0]
[null,null,null,null,7,null,null,null,null,null,null,null,null,0,0,0,0,0,0,0,0,0,0,0,0,0,0,0,0,0,0,0,0,0,0,0,0,0,0,0,0,0,0,0,0,0,0,0,0,0,0,0,0,0,0,0,0,0,0,0,0]
[null,null,null,null,8,null,null,null,null,null,null,null,null,null,0,0,0,0,0,0,0,0,0,0,0,0,0,0,0,0,0,0,0,0,0,0,0,0,0,0,0,0,0,0,0,0,0,0,0,0,0,0,0,0,0,0,0,0,0,0,0]
[null,null,null,null,9,null,null,null,null,null,null,null,null,null,null,0,0,0,0,0,0,0,0,0,0,0,0,0,0,0,0,0,0,0,0,0,0,0,0,0,0,0,0,0,0,0,0,0,0,0,0,0,0,0,0,0,0,0,0,0,0]
[null,null,null,null,10,null,null,null,null,null,null,null,null,null,null,null,0,0,0,0,0,0,0,0,0,0,0,0,0,0,0,0,0,0,0,0,0,0,0,0,0,0,0,0,0,0,0,0,0,0,0,0,0,0,0,0,0,0,0,0,0]
[null,null,{"$f":"Asset50","v":"Equity raising costs"},null,null,null,0,0,0,0,0,0,0,0,0,0,0,0,0,0,0,0,0,0,0,0,0,0,0,0,0,0,0,0,0,0,0,0,0,0,0,0,0,0,0,0,0,0,0,0,0,0,0,0,0,0,0,0,0,0,0]
[null,"Residual Tax Value (end period)",null,null,null,8006.8827174118851,8547.2556737475643,9056.6900663119723,9546.0542691003011,10071.105018712968,10629.16641236219,10045.139552163089,9500.6386607114273,8988.3958981679007,8504.90307944091,8040.1349135995788,7591.0115163115843,7147.921073818191,6719.8804817907594,6306.1648437989043,5903.3541361016878,5506.5350292459625,5135.7491518823072,4792.4675516610032,4455.3360217918917,4124.0473021953385,3813.1434963229663,3540.6857968622903,3273.2694652466771,3010.5941465493502,2767.2815950119334,2533.497668793334,2316.5358856052112,2132.3154524392753,2023.3365350694478,1934.169668375233,1856.6987610798578,1784.1024775692169,1711.8614736795673,1650.1460250183316,1591.5684029392839,1536.5181447171965,1479.391744900088,1425.3654614157681,1373.4937659999077,1323.6656792105671,1263.3277938380525,1205.3435386255701,1149.8173587058845,1111.6364870243829,1074.5300491697767,1016.899244037495,945.12139891278605,871.17029515736613,828.42622945559481,786.36257740330825,742.82005310759996,689.75483528620248,634.95573590630659,585.24634595764633,535.03992772736933]
[]
[null,"Summary of Asset Roll Forward ($m Nominal)"]
[null,"RAB roll forward"]
[null,"Opening RAB",null,null,null,null,16250.670513201945,17192.780742765037,18152.98461996932,19138.610555084866,20172.699740707827,0,0,0,0,0]
[null,"Net Capex",null,null,null,null,1161.7965948716644,1196.934494726823,1237.7698190773344,1310.4727733548323,1405.0998934465169,0,0,0,0,0]
[null,"Straight-line Depreciation",null,null,null,null,-674.66957148554877,-718.09084811032596,-760.38772149238491,-812.22279418497499,-847.24849681946557,0,0,0,0,0]
[null,"Inflation on Opening RAB",null,null,null,null,454.98320617697647,481.36023058778551,508.24383753059152,535.83920645310695,564.79144031726958,0,0,0,0,0]
[null,"Closing RAB",null,null,null,null,17192.780742765037,18152.98461996932,19138.610555084859,20172.699740707831,21295.342577652147,0,0,0,0,0]
[]
[null,"Check",null,null,null,null,"ok","ok","ok","ok","ok","","","","",""]
[]
[null,"TAB roll forward"]
[null,"Opening TAB",null,null,null,null,8006.8827174118851,8547.2556737475643,9056.6900663119723,9546.0542691003011,10071.105018712968,0,0,0,0,0]
[null,"Net Capex (without cap cons)",null,null,null,null,1143.8978349131278,1178.2292430970035,1218.00850190693,1288.8910028483208,1381.2383261027803,0,0,0,0,0]
[null,"Capital Contributions",null,null,null,null,24.363795809632983,23.917763318295194,24.417951485665622,24.848222237709184,25.375141804911667,0,0,0,0,0]
[null,"Tax Depreciation",null,null,null,null,-627.88867438708075,-692.71261385089133,-753.06225060426732,-788.68847547336395,-848.55207425846766,0,0,0,0,0]
[null,"Closing TAB",null,null,null,null,8547.2556737475661,9056.6900663119704,9546.0542691003011,10071.105018712968,10629.166412362192,0,0,0,0,0]
[]
[null,"Check",null,null,null,null,"ok","ok","ok","ok","ok","","","","",""]

{"sheet":"X-factors","index":13,"n_rows":87,"n_cols":28,"rows_kept":87,"cut":false,"hidden":false,"merged":[[15,7,15,9]]}
[null,null,null,null,null,null,null,null,null,null,null,null,null,null,null,null,null,null,null,null,null,null,null,"Form of control options (VBA)","Reverse lookup text (text)",null,"ERC options (text)","ERC_options (VBA)"]
[null,null,null,"Ergon - X Factor Calculations - DNSP PTRM - version 5",null,null,null,null,null,null,null,null,null,null,null,null,null,null,null,null,null,null,null,"_WAPC","Weighted average price cap",null,"update ERC when smoothing (default)","Update_ERC"]
[null,null,null,null,null,null,null,null,null,null,null,null,null,null,null,null,null,null,null,null,null,null,null,"_RevCap","Revenue cap",null,"do NOT update ERC when smoothing","Ignore_ERC"]
[null,null,null,"Year",null,"2024-25","2025-26","2026-27","2027-28","2028-29","2029-30","2030-31","2031-32","2032-33","2033-34","2034-35",null,null,null,null,null,null,null,"_RevYld","Revenue yield cap"]
[null,null,null,"Discount Rates"]
[]
[null,null,null,"Nominal Vanilla WACC (varying)",null,null,6.0420005878369147E-2,6.0897342057685294E-2,6.1625467609823806E-2,6.2712552994105969E-2,6.3822939047335048E-2,6.0942939047335054E-2,6.0942939047335054E-2,6.0942939047335054E-2,6.0942939047335054E-2,6.0942939047335054E-2]
[null,null,null,"Cumulative Discount Rate",null,1,1.060420005878369,1.1249967657011568,1.19432521744703,1.269224400938374,1.3502300325168541,{"$f":"K8*(1+L7)","v":1.43251701908841},1.519818816466985,1.6124410419619255,1.7107079380996326,1.8149635076990307]
[]
[null,null,null,"Inflation Assumption (CPI % increase) (constant)",null,null,2.7997811278454687E-2,2.7997811278454687E-2,2.7997811278454687E-2,2.7997811278454687E-2,2.7997811278454687E-2,2.7498479316033997E-2,2.7498479316033997E-2,2.7498479316033997E-2,2.7498479316033997E-2,2.7498479316033997E-2]
[null,null,null,"Cumulative Inflation Index (CPI end period)",null,1,1.0279978112784547,1.0567794999932933,1.0863670129970453,1.116782911606075,1.1480503888042251,{"$f":"K11*(1+L10)","v":1.1796200286745229},1.2120577856338086,1.2453875315818979,1.2796337948595493,1.3148217782995928]
[]
[null,null,null,"Instructions and Warnings"]
[]
[null,null,null,"The buttons below each row of X factors will smooth total revenue, while also iteratively updating equity raising costs."]
[null,null,null,"If you do not intend to update equity raising costs, use this drop down menu:",null,null,null,"update ERC when smoothing (default)"]
[]
[null,null,null,"The \"Default Smooth\" option will set year 1 smoothed revenue equal to year 1 unsmoothed revenue, and then determine the constant X factor for all remaining years so that total NPV(smoothed) = NPV (unsmoothed)"]
[null,null,null,"Hence, it should only be used at the start of the regulatory control period - adjust the X factor for individual years when updating the return on debt within a period"]
[]
[null,null,null,"Select year of update for annual return on debt",null,"2022"," This option affects which cautions are displayed (shown in this section, the sections below and on the input page) and the import into DMS."]
[]
[null,null,null,"Cautions",{"$f":"IF(AND(D24=\"\",D25=\"\",D26=\"\"),\"This section is blank because no cautions are active.\",\"\")","v":""}]
[null,null,null,{"$f":"IF(F21<>G4,\"Caution - If you are updating the cost of debt within the regulatory period, you should not adjust X factors for past years.\",\"\")","v":"Caution - If you are updating the cost of debt within the regulatory period, you should not adjust X factors for past years."}]
[null,null,null,""]
[null,null,null,""]
[]
[null,null,null,"Building Block Components ($m, Nominal)"]
[]
[null,null,null,"Return on Capital",null,null,981.86560793510171,1046.994649814947,1118.6861657195491,1200.2311286693157,1287.4809859713873,0,0,0,0,0]
[null,null,null,"Return of Capital (regulatory depreciation)",null,null,219.68636530857231,236.73061752254046,252.14388396179339,276.38358773186803,282.457056502196,0,0,0,0,0]
[null,null,null,"Operating Expenditure",null,null,483.5349642226534,499.93113694093142,516.95496197802697,533.18769402187445,550.92518388923747,0,0,0,0,0]
[null,null,null,"Revenue Adjustments",null,null,-190.58777669994876,-210.24777160282585,-221.08739661270835,-174.72686348614602,-162.12081394917891,0,0,0,0,0]
[null,null,null,"Net Tax Allowance",null,null,13.569655172409263,14.108927953898867,11.966711803997885,14.900470208987826,11.794059248345949,0,0,0,0,0]
[null,null,null,"Annual Revenue Requirement (unsmoothed)",null,null,1508.0688159387878,1587.517560629492,1678.6643268506591,1849.9760171459,1970.5364716619877,{"$f":"SUM(L30:L34)","v":0},0,0,0,0]
[]
[null,null,null,"Price Cap Calculation ($m, Nominal)"]
[]
[null,null,null,"Unsmoothed - Annual Revenue Requirement",null,0,1508.0688159387878,1587.517560629492,1678.6643268506591,1849.9760171459,1970.5364716619877,0,0,0,0,0,null,{"$f":"G39/G$8+H39/H$8+I39/I$8+J39/J$8+K39/K$8+L39/L$8+M39/M$8+N39/N$8+O39/O$8+P39/P$8","v":7155.7795424134956},"NPV (unsmoothed)"]
[]
[null,null,null,null,null,null,-1508.0688159387878,"First year difference ($m)",null,null,null,null,null,null,null,null,null,-1970.5364716619877,"Final year difference ($m)"]
[null,null,null,null,null,null,-1,"First year difference (%)",null,null,null,null,null,null,null,null,null,-1,"Final year difference (%)"]
[]
[null,null,null,"Smoothed - Expected Revenue",null,0,0,0,0,0,0,0,0,0,0,0,null,{"$f":"G44/G$8+H44/H$8+I44/I$8+J44/J$8+K44/K$8+L44/L$8+M44/M$8+N44/N$8+O44/O$8+P44/P$8","v":0},"NPV (smoothed)"]
[]
[null,null,null,"X Factors",null,null,"P_0","X_02","X_03","X_04","X_05","X_06","X_07","X_08","X_09","X_10"]
[null,null,null,"positive P0, X imply real decrease in price/ revenue constraint",null,null,-1.4867946165324358E-2,5.3213829243860582E-2,5.3213829243860582E-2,5.3213829243860582E-2,5.3213829243860582E-2,5.3213829243860582E-2,5.3213829243860582E-2,5.3213829243860582E-2,5.3213829243860582E-2,5.3213829243860582E-2,null,{"$f":"(R39-R44)","v":7155.7795424134956},"NPV difference (smoothed vs unsmoothed)"]
[]
[]
[]
[null,null,null,null,null,{"$f":"IF($F$21=$G$4,\"\",\"Caution - do not use default smoothing within the period\")","v":"Caution - do not use default smoothing within the period"},null,{"$f":"IF($F$21=H$4,\"Use to smooth\",\"\")","v":""},"","","","","","","",""]
[]
[null,null,null,"Revenue Cap Calculation ($m, Nominal)"]
[]
[null,null,null,"Unsmoothed - Annual Revenue Requirement",null,1359.2904410000001,1508.0688159387878,1587.517560629492,1678.6643268506591,1849.9760171459,1970.5364716619877,0,0,0,0,0,null,{"$f":"G55/G$8+H55/H$8+I55/I$8+J55/J$8+K55/K$8+L55/L$8+M55/M$8+N55/N$8+O55/O$8+P55/P$8","v":7155.7795424134956},"NPV (unsmoothed)"]
[]
[null,null,null,null,null,null,-40.586742556027957,"First year difference ($m)",null,null,null,null,null,null,null,null,null,22.95770826544458,"Final year difference ($m)"]
[null,null,null,null,null,null,-2.691305736652494E-2,"First year difference (%)",null,null,null,null,null,null,null,null,null,1.165048635008592E-2,"Final year difference (%)"]
[]
[null,null,null,{"$f":"D44","v":"Smoothed - Expected Revenue"},null,1359.2904410000001,1467.4820733827598,1584.2851319659678,1710.3850363109391,1846.5217613992061,1993.4941799274322,0,0,0,0,0,null,{"$f":"G60/G$8+H60/H$8+I60/I$8+J60/J$8+K60/K$8+L60/L$8+M60/M$8+N60/N$8+O60/O$8+P60/P$8","v":7155.4728382361136},"NPV (smoothed)"]
[null,null,null,null,null,null,-1467.4820733827598,-1584.2851319659678,-1710.3850363109391,-1846.5217613992061,-1993.4941799274322]
[null,null,null,"X Factors",null,null,"P_0","X_02","X_03","X_04","X_05","X_06","X_07","X_08","X_09","X_10"]
[null,null,null,"positive P0, X imply real decrease in price/ revenue constraint",null,null,-5.019114444493588E-2,-5.019114444493588E-2,-5.019114444493588E-2,-5.019114444493588E-2,-5.019114444493588E-2,3.9312850982502742E-2,3.9312850982502742E-2,3.9312850982502742E-2,3.9312850982502742E-2,3.9312850982502742E-2,null,{"$f":"ROUND(R60-R55,10)","v":-0.3067041774},"NPV difference (smoothed vs unsmoothed)"]
[null,null,null,null,null,null,null,null,null,null,null,null,null,null,null,null,null,{"$f":"R63*10000000","v":-3067041.7740000002}]
[]
[]
[null,null,null,null,null,{"$f":"IF($F$21=$G$4,\"\",\"Caution - do not use default smoothing within the period\")","v":"Caution - do not use default smoothing within the period"},null,{"$f":"IF($F$21=H$4,\"Use to smooth\",\"\")","v":""},"","","","","","","",""]
[]
[null,null,null,"Revenue Yield/Average Revenue Cap Calculation ($m, Nominal)"]
[]
[null,null,null,"Unsmoothed - Annual Revenue Requirement",null,0,1508.0688159387878,1587.517560629492,1678.6643268506591,1849.9760171459,1970.5364716619877,0,0,0,0,0,null,{"$f":"G71/G$8+H71/H$8+I71/I$8+J71/J$8+K71/K$8+L71/L$8+M71/M$8+N71/N$8+O71/O$8+P71/P$8","v":7155.7795424134956},"NPV (unsmoothed)"]
[]
[null,null,null,null,null,null,-1508.0688159387878,"First year difference ($m)",null,null,null,null,null,null,null,null,null,-1970.5364716619877,"Final year difference ($m)"]
[null,null,null,null,null,null,-1,"First year difference (%)",null,null,null,null,null,null,null,null,null,-1,"Final year difference (%)"]
[]
[null,null,null,"Forecast Energy Throughput (MWh)",null,13512937.813199997,13471525.885199996,13439614.598199999,13440321.150199998,13381012.524199998,13368452.483199997,0,0,0,0,0]
[]
[null,null,null,"Revenue Yield ($/MWh)",null,0,0,0,0,0,0,0,0,0,0,0]
[]
[null,null,null,"Smoothed - Expected Revenue",null,0,0,0,0,0,0,0,0,0,0,0,null,{"$f":"G80/G$8+H80/H$8+I80/I$8+J80/J$8+K80/K$8+L80/L$8+M80/M$8+N80/N$8+O80/O$8+P80/P$8","v":0},"NPV (smoothed)"]
[null,null,null,null,null,null,0,0,0,0,0]
[null,null,null,"X Factors",null,null,"P_0","X_02","X_03","X_04","X_05","X_06","X_07","X_08","X_09","X_10"]
[null,null,null,"positive P0, X imply real decrease in price/ revenue constraint",null,null,-3.0410795392299333E-2,3.8625093472794338E-2,3.8538153253995511E-2,3.8452869688403224E-2,3.8369270081727191E-2,-3.8545140022410761E-3,-3.8545140022410761E-3,-3.8545140022410761E-3,-3.8545140022410761E-3,-3.8545140022410761E-3,null,{"$f":"R80-R71","v":-7155.7795424134956},"NPV difference (smoothed vs unsmoothed)"]
[]
[]
[]
[null,null,null,null,null,{"$f":"IF($F$21=$G$4,\"\",\"Caution - do not use default smoothing within the period\")","v":"Caution - do not use default smoothing within the period"},null,{"$f":"IF($F$21=H$4,\"Use to smooth\",\"\")","v":""},"","","","","","","",""]

{"sheet":"Aux","index":14,"n_rows":11,"n_cols":11,"rows_kept":11,"cut":false,"hidden":false,"merged":[]}
[]
[null,"Auxiliary"]
[]
[null,"Dates",null,"Categories",null,"Customer classes",null,"Notes",null,null,"Colour codes"]
[]
[null,"Years",null,"Scalable classification",null,"Code",null,"Number","Note",null,"Key"]
[null,"2025-26",null,"Scalable",null,"ICC",null,1,"All costs are in millions",null,"Inputs"]
[null,"2026-27",null,"Non Scalable",null,"CAC",null,null,null,null,"Parameter"]
[null,"2027-28",null,null,null,"SAC",null,null,null,null,"Calculation "]
[null,"2028-29",null,null,null,null,null,null,null,null,"Outputs"]
[null,"2029-30",null,null,null,null,null,null,null,null,"Text"]